Workbook

Sheet Premise
B2: Položka | C2: TiO2 (TiOS) | D2: ZrO2 | E2: ZnO | F2: LiFePO4 | H2: Položka | I2: Hodnota | K2: Položka | L2: Hodnota
B3: Reakční teplota | C3: 400 | D3: 400 | E3: 400 | F3: 400 | H3: Počet hodn/den | I3: 7.5 | K3: Cena zemního plynu | L3: =Simulace!C13 -> 0.043
B4: Celkový průtok zařízením | C4: 4500 | D4: 4500 | E4: 4500 | F4: 4500 | H4: Počet směn/den | I4: 3 | K4: Cen elektřiny | L4: =Simulace!C14 -> 0.13
B5: Množství NPs/FP | C5: 59.9 | D5: 92.41 | E5: 30.53 | F5: 47.33 | H5: Pořet prac. dní/rok | I5: =Simulace!C19 -> 231 | K5: Cena vody | L5: =Simulace!C12 -> 1.815
B6: Množství fin. produktu | C6: =VLOOKUP(C3,PV_PN!C44:P48,13,FALSE) -> 500 | D6: =VLOOKUP(D3,PV_PN!C49:P53,13,FALSE) -> 813 | E6: =VLOOKUP(E3,PV_PN!C54:P58,13,FALSE) -> 900 | F6: =VLOOKUP(F3,PV_PN!C59:P63,13,FALSE) -> 500 | H6: Využití prac. doby | I6: =Simulace!C20 -> 0.8 | K6: Měna | L6: 43051
B7: Koncentrace semiproduktu | C7: 0.02 | D7: 0.02 | E7: 0.02 | F7: 0.02 | H7: Kapacita | I7: =I3*I4*I5*I6 -> 4158 | K7: £ | L7: =L10/Vstupy!S33 -> 32.99864305
B8: Koncentrace produktu | C8: 0.08 | D8: 0.08 | E8: 0.08 | F8: 0.08 | K8: € | L8: =L10/Vstupy!S47 -> 27.03425974
B9: Účinnost ohřevu | C9: 1 | D9: 1 | E9: 1 | F9: 1 | H9: Volba scénáře | I9: 1 | K9: WK EU | L9: =Premise!L7/Premise!L8 -> 1.220623142
B10: Spořeba energie | C10: 66.17 | D10: 67.69 | E10: 66.54 | F10: 66.54 | K10: $ | L10: 24.439917
B11: Příkon chladiče | C11: 10.15 | D11: 10.15 | E11: 10.15 | F11: 10.15 | K11: WK US | L11: =Premise!L7/Premise!L10 -> 1.350194563
B12: Chladič Ano/Ne | C12: ANO | D12: ANO | E12: ANO | F12: ANO | K12: CNY | L12: =L10/Vstupy!S61 -> 3.678229802
B13: Produkce | C13: 4158 | D13: 4158 | E13: 4158 | F13: 4158
B14: Cena | C14: =Simulace!C15 -> 40 | D14: =Simulace!C16 -> 43 | E14: =Simulace!C17 -> 43 | F14: =Simulace!C18 -> 30
B15: Produkce | C15: =V_NM!C99 -> 90826.49808 | D15: =V_NM!D99 -> 60550.99872 | E15: =V_NM!E99 -> 48440.79898 | F15: =V_NM!F99 -> 18922.1871
B16: % | C16: =C15/SUM($C$15:$F$15) -> 0.4152249135 | D16: =D15/SUM($C$15:$F$15) -> 0.276816609 | E16: =E15/SUM($C$15:$F$15) -> 0.2214532872 | F16: =F15/SUM($C$15:$F$15) -> 0.08650519031
B18: Doba projektu | C18: 5 | D18: 10 | E18: 15
B19: Výrobní kapacita projektu | C19: =C18*$I$7 -> 20790 | D19: =D18*$I$7 -> 41580 | E19: 62370
G21: =G19*G20 -> 0
G22: =G21/SUM($C$15:$F$15) -> 0

Sheet FCM
B1: VÝROBNÍ NÁKLADY
C6: Chemikálie | D6: Precursor pro | E6: Jedn. cena (£) | F6: Jedn. cena (€) | G6: Jednotka | H6: Dodavatel | I6: Poznámka | J6: Sp_TiO2 (TiOS) | K6: Sp_ZrO2 | L6: Sp_ZnO | M6: Sp_LiFePO4 | N6: N_TiO2 (TiOS) | O6: N_ZrO2 | P6: N_ZnO | Q6: N_LiFePO4
A7: =IF(J7<>"-",1,IF(K7<>"-",1,IF(L7<>"-",1,IF(M7<>"-",1,0)))) -> 1 | B7: Chemie | C7: VODA | D7: - | E7: 0.001815 | F7: =F43 -> 0.002215431002 | G7: kg | H7: - | I7: - | J7: 5592.1525 | K7: 5665.59 | L7: 5350 | M7: 4974 | N7: =IF(ISERROR(IF(J7="","",F7*J7/Premise!$C$5))=TRUE,0,IF(J7="","",F7*J7/Premise!$C$5)) -> 0.2068285145 | O7: =IF(ISERROR(IF(K7="","",F7*K7/Premise!$D$5))=TRUE,0,IF(K7="","",F7*K7/Premise!$D$5)) -> 0.1358264661 | P7: =IF(ISERROR(IF(L7="","",F7*L7/Premise!$E$5))=TRUE,0,IF(L7="","",F7*L7/Premise!$E$5)) -> 0.3882265268 | Q7: =IF(ISERROR(IF(M7="","",F7*M7/Premise!$F$5))=TRUE,0,IF(M7="","",F7*M7/Premise!$F$5)) -> 0.2328238708 | R7: WATER
A8: =IF(J8<>"-",1,IF(K8<>"-",1,IF(L8<>"-",1,IF(M8<>"-",1,0)))) -> 1 | C8: ODPADNÍ VODA | D8: - | E8: 0.001815 | F8: =F43 -> 0.002215431002 | G8: kg | H8: - | I8: - | J8: 5212.1 | K8: 5281.18 | L8: 5279.25 | M8: 4682.52 | N8: =IF(ISERROR(IF(J8="","",F8*J8/Premise!$C$5))=TRUE,0,IF(J8="","",F8*J8/Premise!$C$5)) -> 0.1927720856 | O8: =IF(ISERROR(IF(K8="","",F8*K8/Premise!$D$5))=TRUE,0,IF(K8="","",F8*K8/Premise!$D$5)) -> 0.1266106471 | P8: =IF(ISERROR(IF(L8="","",F8*L8/Premise!$E$5))=TRUE,0,IF(L8="","",F8*L8/Premise!$E$5)) -> 0.3830925031 | Q8: =IF(ISERROR(IF(M8="","",F8*M8/Premise!$F$5))=TRUE,0,IF(M8="","",F8*M8/Premise!$F$5)) -> 0.2191802235 | R8: WASTE WATER DISPOSAL
A9: 0 | C9: HYDROGEN PEROXIDE | D9: - | E9: 0.32 | F9: =E9*Premise!$L$9 -> 0.3905994054 | G9: kg | H9: MOLBASE | I9: 0.3 | J9: - | K9: - | L9: - | M9: - | N9: =IF(ISERROR(IF(J9="","",F9*J9/Premise!$C$5))=TRUE,0,IF(J9="","",F9*J9/Premise!$C$5)) -> 0 | O9: =IF(ISERROR(IF(K9="","",F9*K9/Premise!$D$5))=TRUE,0,IF(K9="","",F9*K9/Premise!$D$5)) -> 0 | P9: =IF(ISERROR(IF(L9="","",F9*L9/Premise!$E$5))=TRUE,0,IF(L9="","",F9*L9/Premise!$E$5)) -> 0 | Q9: =IF(ISERROR(IF(M9="","",F9*M9/Premise!$F$5))=TRUE,0,IF(M9="","",F9*M9/Premise!$F$5)) -> 0 | R9: HYDROGEN PEROXIDE
A10: 0 | C10: NAOH SOLUTION 32% | D10: - | E10: 0.239 | F10: =E10*Premise!$L$9 -> 0.2917289309 | G10: kg | H10: STOWLIN | I10: 0.32 | J10: - | K10: - | L10: - | M10: - | N10: =IF(ISERROR(IF(J10="","",F10*J10/Premise!$C$5))=TRUE,0,IF(J10="","",F10*J10/Premise!$C$5)) -> 0 | O10: =IF(ISERROR(IF(K10="","",F10*K10/Premise!$D$5))=TRUE,0,IF(K10="","",F10*K10/Premise!$D$5)) -> 0 | P10: =IF(ISERROR(IF(L10="","",F10*L10/Premise!$E$5))=TRUE,0,IF(L10="","",F10*L10/Premise!$E$5)) -> 0 | Q10: =IF(ISERROR(IF(M10="","",F10*M10/Premise!$F$5))=TRUE,0,IF(M10="","",F10*M10/Premise!$F$5)) -> 0 | R10: NAOH SOLUTION 32%
A11: 0 | C11: NAOH | D11: - | E11: 0.32 | F11: =E11*Premise!$L$9 -> 0.3905994054 | G11: kg | H11: MOLBASE | I11: 1 | J11: - | K11: - | L11: - | M11: - | N11: =IF(ISERROR(IF(J11="","",F11*J11/Premise!$C$5))=TRUE,0,IF(J11="","",F11*J11/Premise!$C$5)) -> 0 | O11: =IF(ISERROR(IF(K11="","",F11*K11/Premise!$D$5))=TRUE,0,IF(K11="","",F11*K11/Premise!$D$5)) -> 0 | P11: =IF(ISERROR(IF(L11="","",F11*L11/Premise!$E$5))=TRUE,0,IF(L11="","",F11*L11/Premise!$E$5)) -> 0 | Q11: =IF(ISERROR(IF(M11="","",F11*M11/Premise!$F$5))=TRUE,0,IF(M11="","",F11*M11/Premise!$F$5)) -> 0 | R11: NAOH
A12: 0 | C12: HNO3 | D12: - | E12: 0.14 | F12: =E12*Premise!$L$9 -> 0.1708872399 | G12: kg | H12: MOLBASE | I12: - | J12: - | K12: - | L12: - | M12: - | N12: =IF(ISERROR(IF(J12="","",F12*J12/Premise!$C$5))=TRUE,0,IF(J12="","",F12*J12/Premise!$C$5)) -> 0 | O12: =IF(ISERROR(IF(K12="","",F12*K12/Premise!$D$5))=TRUE,0,IF(K12="","",F12*K12/Premise!$D$5)) -> 0 | P12: =IF(ISERROR(IF(L12="","",F12*L12/Premise!$E$5))=TRUE,0,IF(L12="","",F12*L12/Premise!$E$5)) -> 0 | Q12: =IF(ISERROR(IF(M12="","",F12*M12/Premise!$F$5))=TRUE,0,IF(M12="","",F12*M12/Premise!$F$5)) -> 0 | R12: HNO3
A13: 0 | C13: HCL | D13: - | E13: 0.198 | F13: =E13*Premise!$L$9 -> 0.2416833821 | G13: kg | H13: PROMETHEAN SUPPLIER | I13: - | J13: - | K13: - | L13: - | M13: - | N13: =IF(ISERROR(IF(J13="","",F13*J13/Premise!$C$5))=TRUE,0,IF(J13="","",F13*J13/Premise!$C$5)) -> 0 | O13: =IF(ISERROR(IF(K13="","",F13*K13/Premise!$D$5))=TRUE,0,IF(K13="","",F13*K13/Premise!$D$5)) -> 0 | P13: =IF(ISERROR(IF(L13="","",F13*L13/Premise!$E$5))=TRUE,0,IF(L13="","",F13*L13/Premise!$E$5)) -> 0 | Q13: =IF(ISERROR(IF(M13="","",F13*M13/Premise!$F$5))=TRUE,0,IF(M13="","",F13*M13/Premise!$F$5)) -> 0 | R13: HCL
A14: 0 | C14: TIBALD INPUT | D14: TIO2 | E14: 7.5 | F14: =E14*Premise!$L$9 -> 9.154673563 | G14: kg | H14: - | I14: - | J14: - | K14: - | L14: - | M14: - | N14: =IF(ISERROR(IF(J14="","",F14*J14/Premise!$C$5))=TRUE,0,IF(J14="","",F14*J14/Premise!$C$5)) -> 0 | O14: =IF(ISERROR(IF(K14="","",F14*K14/Premise!$D$5))=TRUE,0,IF(K14="","",F14*K14/Premise!$D$5)) -> 0 | P14: =IF(ISERROR(IF(L14="","",F14*L14/Premise!$E$5))=TRUE,0,IF(L14="","",F14*L14/Premise!$E$5)) -> 0 | Q14: =IF(ISERROR(IF(M14="","",F14*M14/Premise!$F$5))=TRUE,0,IF(M14="","",F14*M14/Premise!$F$5)) -> 0 | R14: TIBALD INPUT
A15: 0 | C15: TITANIUM DIOXIDE | D15: TIO2 | E15: 25 | F15: =E15*Premise!$L$9 -> 30.51557854 | G15: kg | H15: - | I15: Benchmark price of NPs from Advanced Materials | J15: - | K15: - | L15: - | M15: - | N15: =IF(ISERROR(IF(J15="","",F15*J15/Premise!$C$5))=TRUE,0,IF(J15="","",F15*J15/Premise!$C$5)) -> 0 | O15: =IF(ISERROR(IF(K15="","",F15*K15/Premise!$D$5))=TRUE,0,IF(K15="","",F15*K15/Premise!$D$5)) -> 0 | P15: =IF(ISERROR(IF(L15="","",F15*L15/Premise!$E$5))=TRUE,0,IF(L15="","",F15*L15/Premise!$E$5)) -> 0 | Q15: =IF(ISERROR(IF(M15="","",F15*M15/Premise!$F$5))=TRUE,0,IF(M15="","",F15*M15/Premise!$F$5)) -> 0 | R15: TITANIUM DIOXIDE
A16: 0 | C16: PTOOD | D16: TIO2 | E16: 4 | F16: =E16*Premise!$L$9 -> 4.882492567 | G16: kg | H16: - | I16: - | J16: - | K16: - | L16: - | M16: - | N16: =IF(ISERROR(IF(J16="","",F16*J16/Premise!$C$5))=TRUE,0,IF(J16="","",F16*J16/Premise!$C$5)) -> 0 | O16: =IF(ISERROR(IF(K16="","",F16*K16/Premise!$D$5))=TRUE,0,IF(K16="","",F16*K16/Premise!$D$5)) -> 0 | P16: =IF(ISERROR(IF(L16="","",F16*L16/Premise!$E$5))=TRUE,0,IF(L16="","",F16*L16/Premise!$E$5)) -> 0 | Q16: =IF(ISERROR(IF(M16="","",F16*M16/Premise!$F$5))=TRUE,0,IF(M16="","",F16*M16/Premise!$F$5)) -> 0 | R16: PTOOD
A17: 0 | C17: ISOPROPANOL | D17: TIO2 | E17: 1.5 | F17: =E17*Premise!$L$9 -> 1.830934713 | G17: kg | H17: MOLBASE | I17: - | J17: - | K17: - | L17: - | M17: - | N17: =IF(ISERROR(IF(J17="","",F17*J17/Premise!$C$5))=TRUE,0,IF(J17="","",F17*J17/Premise!$C$5)) -> 0 | O17: =IF(ISERROR(IF(K17="","",F17*K17/Premise!$D$5))=TRUE,0,IF(K17="","",F17*K17/Premise!$D$5)) -> 0 | P17: =IF(ISERROR(IF(L17="","",F17*L17/Premise!$E$5))=TRUE,0,IF(L17="","",F17*L17/Premise!$E$5)) -> 0 | Q17: =IF(ISERROR(IF(M17="","",F17*M17/Premise!$F$5))=TRUE,0,IF(M17="","",F17*M17/Premise!$F$5)) -> 0 | R17: ISOPROPANOL
A18: 0 | C18: TIPO | D18: TIO2 | E18: 2.6 | F18: =E18*Premise!$L$9 -> 3.173620169 | G18: kg | H18: - | I18: - | J18: - | K18: - | L18: - | M18: - | N18: =IF(ISERROR(IF(J18="","",F18*J18/Premise!$C$5))=TRUE,0,IF(J18="","",F18*J18/Premise!$C$5)) -> 0 | O18: =IF(ISERROR(IF(K18="","",F18*K18/Premise!$D$5))=TRUE,0,IF(K18="","",F18*K18/Premise!$D$5)) -> 0 | P18: =IF(ISERROR(IF(L18="","",F18*L18/Premise!$E$5))=TRUE,0,IF(L18="","",F18*L18/Premise!$E$5)) -> 0 | Q18: =IF(ISERROR(IF(M18="","",F18*M18/Premise!$F$5))=TRUE,0,IF(M18="","",F18*M18/Premise!$F$5)) -> 0 | R18: TIPO
A19: 1 | C19: TETRACHLORID TITANU | D19: TIO2 | E19: 1 | F19: =Simulace!C3 -> 1.22 | G19: kg | H19: - | I19: - | J19: 13.34974958 | K19: - | L19: - | M19: - | N19: =IF(ISERROR(IF(J19="","",F19*J19/Premise!$C$5))=TRUE,0,IF(J19="","",F19*J19/Premise!$C$5)) -> 0.2718980716 | O19: =IF(ISERROR(IF(K19="","",F19*K19/Premise!$D$5))=TRUE,0,IF(K19="","",F19*K19/Premise!$D$5)) -> 0 | P19: =IF(ISERROR(IF(L19="","",F19*L19/Premise!$E$5))=TRUE,0,IF(L19="","",F19*L19/Premise!$E$5)) -> 0 | Q19: =IF(ISERROR(IF(M19="","",F19*M19/Premise!$F$5))=TRUE,0,IF(M19="","",F19*M19/Premise!$F$5)) -> 0 | R19: TITANIUM TETRACHLORIDE
A20: 1 | C20: OXYSULFID TITANU | D20: TIO2 | E20: 1.22 | F20: =Simulace!C4 -> 1.489160233 | G20: kg | H20: CRYSTAL | I20: - | J20: 799.65 | K20: - | L20: - | M20: - | N20: =IF(ISERROR(IF(J20="","",F20*J20/Premise!$C$5))=TRUE,0,IF(J20="","",F20*J20/Premise!$C$5)) -> 19.8799162 | O20: =IF(ISERROR(IF(K20="","",F20*K20/Premise!$D$5))=TRUE,0,IF(K20="","",F20*K20/Premise!$D$5)) -> 0 | P20: =IF(ISERROR(IF(L20="","",F20*L20/Premise!$E$5))=TRUE,0,IF(L20="","",F20*L20/Premise!$E$5)) -> 0 | Q20: =IF(ISERROR(IF(M20="","",F20*M20/Premise!$F$5))=TRUE,0,IF(M20="","",F20*M20/Premise!$F$5)) -> 0 | R20: TITANIUM OXYSULFATE
A21: 0 | C21: ZINC NITRATE HEXAHYDRATE | D21: ZnO | E21: 2.75 | F21: =E21*Premise!$L$9 -> 3.35671364 | G21: kg | H21: THOMSON & JOSEPH | I21: - | J21: - | K21: - | L21: - | M21: - | N21: =IF(ISERROR(IF(J21="","",F21*J21/Premise!$C$5))=TRUE,0,IF(J21="","",F21*J21/Premise!$C$5)) -> 0 | O21: =IF(ISERROR(IF(K21="","",F21*K21/Premise!$D$5))=TRUE,0,IF(K21="","",F21*K21/Premise!$D$5)) -> 0 | P21: =IF(ISERROR(IF(L21="","",F21*L21/Premise!$E$5))=TRUE,0,IF(L21="","",F21*L21/Premise!$E$5)) -> 0 | Q21: =IF(ISERROR(IF(M21="","",F21*M21/Premise!$F$5))=TRUE,0,IF(M21="","",F21*M21/Premise!$F$5)) -> 0 | R21: ZINC NITRATE HEXAHYDRATE
A22: 0 | C22: ZINC NITRATE | D22: ZnO | E22: 3.25 | F22: =E22*Premise!$L$9 -> 3.967025211 | G22: kg | H22: THOMSON & JOSEPH | I22: - | J22: - | K22: - | L22: - | M22: - | N22: =IF(ISERROR(IF(J22="","",F22*J22/Premise!$C$5))=TRUE,0,IF(J22="","",F22*J22/Premise!$C$5)) -> 0 | O22: =IF(ISERROR(IF(K22="","",F22*K22/Premise!$D$5))=TRUE,0,IF(K22="","",F22*K22/Premise!$D$5)) -> 0 | P22: =IF(ISERROR(IF(L22="","",F22*L22/Premise!$E$5))=TRUE,0,IF(L22="","",F22*L22/Premise!$E$5)) -> 0 | Q22: =IF(ISERROR(IF(M22="","",F22*M22/Premise!$F$5))=TRUE,0,IF(M22="","",F22*M22/Premise!$F$5)) -> 0 | R22: ZINC NITRATE
A23: 1 | C23: DUSIČNAN ZINEČNATY ROZTOK | D23: ZnO | E23: 1.6 | F23: =Simulace!C5 -> 1.952997027 | G23: kg | H23: ESTIMATION SOLUTION | I23: 0.32 | J23: - | K23: - | L23: 144.22 | M23: - | N23: =IF(ISERROR(IF(J23="","",F23*J23/Premise!$C$5))=TRUE,0,IF(J23="","",F23*J23/Premise!$C$5)) -> 0 | O23: =IF(ISERROR(IF(K23="","",F23*K23/Premise!$D$5))=TRUE,0,IF(K23="","",F23*K23/Premise!$D$5)) -> 0 | P23: =IF(ISERROR(IF(L23="","",F23*L23/Premise!$E$5))=TRUE,0,IF(L23="","",F23*L23/Premise!$E$5)) -> 9.225719987 | Q23: =IF(ISERROR(IF(M23="","",F23*M23/Premise!$F$5))=TRUE,0,IF(M23="","",F23*M23/Premise!$F$5)) -> 0 | R23: ZINC NITRATE SOLUTION
A24: 1 | C24: HYDROXID DRASELNÝ | D24: ZnO | E24: 0.58 | F24: =Simulace!C6 -> 0.7079614222 | G24: kg | H24: - | I24: - | J24: - | K24: - | L24: 20.196 | M24: - | N24: =IF(ISERROR(IF(J24="","",F24*J24/Premise!$C$5))=TRUE,0,IF(J24="","",F24*J24/Premise!$C$5)) -> 0 | O24: =IF(ISERROR(IF(K24="","",F24*K24/Premise!$D$5))=TRUE,0,IF(K24="","",F24*K24/Premise!$D$5)) -> 0 | P24: =IF(ISERROR(IF(L24="","",F24*L24/Premise!$E$5))=TRUE,0,IF(L24="","",F24*L24/Premise!$E$5)) -> 0.4683258724 | Q24: =IF(ISERROR(IF(M24="","",F24*M24/Premise!$F$5))=TRUE,0,IF(M24="","",F24*M24/Premise!$F$5)) -> 0 | R24: POTASSIUM HYDROXIDE
A25: 0 | C25: ZINC OXIDE | D25: ZnO | E25: 7.5 | F25: =E25*Premise!$L$9 -> 9.154673563 | G25: kg | H25: - | I25: Benchmark price of NPs from SOLVAY | J25: - | K25: - | L25: - | M25: - | N25: =IF(ISERROR(IF(J25="","",F25*J25/Premise!$C$5))=TRUE,0,IF(J25="","",F25*J25/Premise!$C$5)) -> 0 | O25: =IF(ISERROR(IF(K25="","",F25*K25/Premise!$D$5))=TRUE,0,IF(K25="","",F25*K25/Premise!$D$5)) -> 0 | P25: =IF(ISERROR(IF(L25="","",F25*L25/Premise!$E$5))=TRUE,0,IF(L25="","",F25*L25/Premise!$E$5)) -> 0 | Q25: =IF(ISERROR(IF(M25="","",F25*M25/Premise!$F$5))=TRUE,0,IF(M25="","",F25*M25/Premise!$F$5)) -> 0 | R25: ZINC OXIDE
A26: 1 | C26: ACETÁT ZIRKONU | D26: ZrO2 | E26: 1.98 | F26: =Simulace!C7 -> 2.416833821 | G26: kg | H26: OXCHEM (CHEMIESPHERE) | I26: 0.22 | J26: - | K26: 427.71 | L26: - | M26: - | N26: =IF(ISERROR(IF(J26="","",F26*J26/Premise!$C$5))=TRUE,0,IF(J26="","",F26*J26/Premise!$C$5)) -> 0 | O26: =IF(ISERROR(IF(K26="","",F26*K26/Premise!$D$5))=TRUE,0,IF(K26="","",F26*K26/Premise!$D$5)) -> 11.18606204 | P26: =IF(ISERROR(IF(L26="","",F26*L26/Premise!$E$5))=TRUE,0,IF(L26="","",F26*L26/Premise!$E$5)) -> 0 | Q26: =IF(ISERROR(IF(M26="","",F26*M26/Premise!$F$5))=TRUE,0,IF(M26="","",F26*M26/Premise!$F$5)) -> 0 | R26: ZR(AC)
A27: 0 | C27: ZIRCONIA | D27: ZrO2 | E27: 35 | F27: =E27*Premise!$L$9 -> 42.72180996 | G27: kg | H27: - | I27: Benchmark price of NPs | J27: - | K27: - | L27: - | M27: - | N27: =IF(ISERROR(IF(J27="","",F27*J27/Premise!$C$5))=TRUE,0,IF(J27="","",F27*J27/Premise!$C$5)) -> 0 | O27: =IF(ISERROR(IF(K27="","",F27*K27/Premise!$D$5))=TRUE,0,IF(K27="","",F27*K27/Premise!$D$5)) -> 0 | P27: =IF(ISERROR(IF(L27="","",F27*L27/Premise!$E$5))=TRUE,0,IF(L27="","",F27*L27/Premise!$E$5)) -> 0 | Q27: =IF(ISERROR(IF(M27="","",F27*M27/Premise!$F$5))=TRUE,0,IF(M27="","",F27*M27/Premise!$F$5)) -> 0 | R27: ZIRCONIA
A28: 1 | C28: KYSELINA ASKORBOVÁ | D28: LiFePO4 | E28: 5.7 | F28: =Simulace!C8 -> 6.957551908 | G28: kg | H28: MOLBASE | I28: - | J28: - | K28: - | L28: - | M28: 32.02 | N28: =IF(ISERROR(IF(J28="","",F28*J28/Premise!$C$5))=TRUE,0,IF(J28="","",F28*J28/Premise!$C$5)) -> 0 | O28: =IF(ISERROR(IF(K28="","",F28*K28/Premise!$D$5))=TRUE,0,IF(K28="","",F28*K28/Premise!$D$5)) -> 0 | P28: =IF(ISERROR(IF(L28="","",F28*L28/Premise!$E$5))=TRUE,0,IF(L28="","",F28*L28/Premise!$E$5)) -> 0 | Q28: =IF(ISERROR(IF(M28="","",F28*M28/Premise!$F$5))=TRUE,0,IF(M28="","",F28*M28/Premise!$F$5)) -> 4.706968352 | R28: ASCORBIC ACID
A29: 1 | C29: SÍRAN ŽELEZNATÝ HEPTAHYDRÁT | D29: LiFePO4 | E29: 0.32 | F29: =Simulace!C9 -> 0.3905994054 | G29: kg | H29: AJW NOTES | I29: - | J29: - | K29: - | L29: - | M29: 105.32 | N29: =IF(ISERROR(IF(J29="","",F29*J29/Premise!$C$5))=TRUE,0,IF(J29="","",F29*J29/Premise!$C$5)) -> 0 | O29: =IF(ISERROR(IF(K29="","",F29*K29/Premise!$D$5))=TRUE,0,IF(K29="","",F29*K29/Premise!$D$5)) -> 0 | P29: =IF(ISERROR(IF(L29="","",F29*L29/Premise!$E$5))=TRUE,0,IF(L29="","",F29*L29/Premise!$E$5)) -> 0 | Q29: =IF(ISERROR(IF(M29="","",F29*M29/Premise!$F$5))=TRUE,0,IF(M29="","",F29*M29/Premise!$F$5)) -> 0.8691723933 | R29: FESO4.7H2O
A30: 1 | C30: HYDROXID LITHNÝ MONOHYDRÁT | D30: LiFePO4 | E30: 5.5 | F30: =Simulace!C10 -> 6.71342728 | G30: kg | H30: MELROB | I30: - | J30: - | K30: - | L30: - | M30: 41.96 | N30: =IF(ISERROR(IF(J30="","",F30*J30/Premise!$C$5))=TRUE,0,IF(J30="","",F30*J30/Premise!$C$5)) -> 0 | O30: =IF(ISERROR(IF(K30="","",F30*K30/Premise!$D$5))=TRUE,0,IF(K30="","",F30*K30/Premise!$D$5)) -> 0 | P30: =IF(ISERROR(IF(L30="","",F30*L30/Premise!$E$5))=TRUE,0,IF(L30="","",F30*L30/Premise!$E$5)) -> 0 | Q30: =IF(ISERROR(IF(M30="","",F30*M30/Premise!$F$5))=TRUE,0,IF(M30="","",F30*M30/Premise!$F$5)) -> 5.951730587 | R30: LIOH.H2O
A31: 1 | C31: KYSELINA FOSFOREČNÁ | D31: LiFePO4 | E31: 0.5 | F31: =Simulace!C11 -> 0.6103115709 | G31: kg | H31: CHEMICALS.CO.UK | I31: 0.85 | J31: - | K31: - | L31: - | M31: 36.754 | N31: =IF(ISERROR(IF(J31="","",F31*J31/Premise!$C$5))=TRUE,0,IF(J31="","",F31*J31/Premise!$C$5)) -> 0 | O31: =IF(ISERROR(IF(K31="","",F31*K31/Premise!$D$5))=TRUE,0,IF(K31="","",F31*K31/Premise!$D$5)) -> 0 | P31: =IF(ISERROR(IF(L31="","",F31*L31/Premise!$E$5))=TRUE,0,IF(L31="","",F31*L31/Premise!$E$5)) -> 0 | Q31: =IF(ISERROR(IF(M31="","",F31*M31/Premise!$F$5))=TRUE,0,IF(M31="","",F31*M31/Premise!$F$5)) -> 0.4739360126 | R31: H3PO4
A32: 0 | C32: LIFEPO4 | D32: LiFePO4 | E32: 20 | F32: =E32*Premise!$L$9 -> 24.41246284 | G32: kg | H32: PHOSTECH | I32: Benchmark price of NPs | J32: - | K32: - | L32: - | M32: - | N32: =IF(ISERROR(IF(J32="","",F32*J32/Premise!$C$5))=TRUE,0,IF(J32="","",F32*J32/Premise!$C$5)) -> 0 | O32: =IF(ISERROR(IF(K32="","",F32*K32/Premise!$D$5))=TRUE,0,IF(K32="","",F32*K32/Premise!$D$5)) -> 0 | P32: =IF(ISERROR(IF(L32="","",F32*L32/Premise!$E$5))=TRUE,0,IF(L32="","",F32*L32/Premise!$E$5)) -> 0 | Q32: =IF(ISERROR(IF(M32="","",F32*M32/Premise!$F$5))=TRUE,0,IF(M32="","",F32*M32/Premise!$F$5)) -> 0 | R32: LIFEPO4
A33: 0 | C33: CE(AC)3 | D33: CeO2 | E33: 3.5 | F33: =E33*Premise!$L$9 -> 4.272180996 | G33: kg | H33: MOLBASE | I33: - | J33: - | K33: - | L33: - | M33: - | N33: =IF(ISERROR(IF(J33="","",F33*J33/Premise!$C$5))=TRUE,0,IF(J33="","",F33*J33/Premise!$C$5)) -> 0 | O33: =IF(ISERROR(IF(K33="","",F33*K33/Premise!$D$5))=TRUE,0,IF(K33="","",F33*K33/Premise!$D$5)) -> 0 | P33: =IF(ISERROR(IF(L33="","",F33*L33/Premise!$E$5))=TRUE,0,IF(L33="","",F33*L33/Premise!$E$5)) -> 0 | Q33: =IF(ISERROR(IF(M33="","",F33*M33/Premise!$F$5))=TRUE,0,IF(M33="","",F33*M33/Premise!$F$5)) -> 0 | R33: CE(AC)3
A34: 0 | C34: (NH4)2HPO4 | D34: HA | E34: 0.75 | F34: =E34*Premise!$L$9 -> 0.9154673563 | G34: kg | H34: MOLBASE | I34: - | J34: - | K34: - | L34: - | M34: - | N34: =IF(ISERROR(IF(J34="","",F34*J34/Premise!$C$5))=TRUE,0,IF(J34="","",F34*J34/Premise!$C$5)) -> 0 | O34: =IF(ISERROR(IF(K34="","",F34*K34/Premise!$D$5))=TRUE,0,IF(K34="","",F34*K34/Premise!$D$5)) -> 0 | P34: =IF(ISERROR(IF(L34="","",F34*L34/Premise!$E$5))=TRUE,0,IF(L34="","",F34*L34/Premise!$E$5)) -> 0 | Q34: =IF(ISERROR(IF(M34="","",F34*M34/Premise!$F$5))=TRUE,0,IF(M34="","",F34*M34/Premise!$F$5)) -> 0 | R34: (NH4)2HPO4
A35: 0 | C35: CA(NO3)2.4H2O | D35: HA | E35: 0.18 | F35: =E35*Premise!$L$9 -> 0.2197121655 | G35: kg | H35: MOLBASE | I35: - | J35: - | K35: - | L35: - | M35: - | N35: =IF(ISERROR(IF(J35="","",F35*J35/Premise!$C$5))=TRUE,0,IF(J35="","",F35*J35/Premise!$C$5)) -> 0 | O35: =IF(ISERROR(IF(K35="","",F35*K35/Premise!$D$5))=TRUE,0,IF(K35="","",F35*K35/Premise!$D$5)) -> 0 | P35: =IF(ISERROR(IF(L35="","",F35*L35/Premise!$E$5))=TRUE,0,IF(L35="","",F35*L35/Premise!$E$5)) -> 0 | Q35: =IF(ISERROR(IF(M35="","",F35*M35/Premise!$F$5))=TRUE,0,IF(M35="","",F35*M35/Premise!$F$5)) -> 0 | R35: CA(NO3)2.4H2O
A36: 0 | C36: NH4OH | D36: HA | E36: 0.32 | F36: =E36*Premise!$L$9 -> 0.3905994054 | G36: kg | H36: MOLBASE | I36: - | J36: - | K36: - | L36: - | M36: - | N36: =IF(ISERROR(IF(J36="","",F36*J36/Premise!$C$5))=TRUE,0,IF(J36="","",F36*J36/Premise!$C$5)) -> 0 | O36: =IF(ISERROR(IF(K36="","",F36*K36/Premise!$D$5))=TRUE,0,IF(K36="","",F36*K36/Premise!$D$5)) -> 0 | P36: =IF(ISERROR(IF(L36="","",F36*L36/Premise!$E$5))=TRUE,0,IF(L36="","",F36*L36/Premise!$E$5)) -> 0 | Q36: =IF(ISERROR(IF(M36="","",F36*M36/Premise!$F$5))=TRUE,0,IF(M36="","",F36*M36/Premise!$F$5)) -> 0 | R36: NH4OH
A37: 0 | C37: TEREPTHALIC ACID | D37: ZIF8 | E37: 0.69 | F37: =E37*Premise!$L$9 -> 0.8422299678 | G37: kg | H37: ICIS | I37: - | J37: - | K37: - | L37: - | M37: - | N37: =IF(ISERROR(IF(J37="","",F37*J37/Premise!$C$5))=TRUE,0,IF(J37="","",F37*J37/Premise!$C$5)) -> 0 | O37: =IF(ISERROR(IF(K37="","",F37*K37/Premise!$D$5))=TRUE,0,IF(K37="","",F37*K37/Premise!$D$5)) -> 0 | P37: =IF(ISERROR(IF(L37="","",F37*L37/Premise!$E$5))=TRUE,0,IF(L37="","",F37*L37/Premise!$E$5)) -> 0 | Q37: =IF(ISERROR(IF(M37="","",F37*M37/Premise!$F$5))=TRUE,0,IF(M37="","",F37*M37/Premise!$F$5)) -> 0 | R37: TEREPTHALIC ACID
C38: Celkem chemikálie | J38: =SUBTOTAL(109,Tab_TiOS_Ch[Sp_TiO2 (TiOS)]) -> 11617.25225 | K38: =SUBTOTAL(109,Tab_TiOS_Ch[Sp_ZrO2]) -> 11374.48 | L38: =SUBTOTAL(109,Tab_TiOS_Ch[Sp_ZnO]) -> 10793.666 | M38: =SUBTOTAL(109,Tab_TiOS_Ch[Sp_LiFePO4]) -> 9872.574 | N38: =SUBTOTAL(109,Tab_TiOS_Ch[N_TiO2 (TiOS)]) -> 20.55141487 | O38: =SUBTOTAL(109,Tab_TiOS_Ch[N_ZrO2]) -> 11.44849916 | P38: =SUBTOTAL(109,Tab_TiOS_Ch[N_ZnO]) -> 10.46536489 | Q38: =SUBTOTAL(109,Tab_TiOS_Ch[N_LiFePO4]) -> 12.45381144
C40: Položka | D40: Užití | E40: Jedn. cena (£) | F40: Jedn. cena (€) | G40: Jednotka | H40: Sloupec1 | I40: Sloupec2 | J40: Sp_TiO2 (TiOS) | K40: Sp_ZrO2 | L40: Sp_ZnO | M40: Sp_LiFePO4 | N40: N_TiO2 (TiOS) | O40: N_ZrO2 | P40: N_ZnO | Q40: N_LiFePO4
B41: Energie | C41: ELEKTŘINA | D41: Pumpy… | E41: =Premise!L4 -> 0.13 | F41: =E41*Premise!$L$9 -> 0.1586810084 | G41: kW | H41: - | I41: - | J41: 76.32 | K41: 77.84 | L41: 76.69 | M41: 76.69 | N41: =J41*F41/Premise!$C$5 -> 0.2021792081 | O41: =K41*F41/Premise!$D$5 -> 0.1336622627 | P41: =L41*F41/Premise!$E$5 -> 0.3985996245 | Q41: =M41*F41/Premise!$F$5 -> 0.2571148645
C42: ZEMNÍ PLYN | D42: Ohřev… | E42: =Premise!L3 -> 0.043 | F42: =E42*Premise!$L$9 -> 0.0524867951 | G42: kW | H42: - | I42: - | J42: 1150 | K42: 1003.8 | L42: 1150 | M42: 1150 | N42: =J42*F42/Premise!$C$5 -> 1.007676367 | O42: =K42*F42/Premise!$D$5 -> 0.5701357528 | P42: =L42*F42/Premise!$E$5 -> 1.977065652 | Q42: =M42*F42/Premise!$F$5 -> 1.275297155
C43: VODA | D43: Odpady … | E43: =Premise!L5/1000 -> 0.001815 | F43: =E43*Premise!$L$9 -> 0.002215431002 | G43: kg | H43: - | I43: - | J43: 113.3356 | K43: 1.87 | L43: 0 | M43: 0 | N43: =J43*F43 -> 0.2510872019 | O43: =K43*F43/Premise!$D$5 -> 4.483125175e-05 | P43: =L43*F43/Premise!$E$5 -> 0 | Q43: =M43*F43/Premise!$F$5 -> 0
C44: Celkem energie výroba | N44: =SUBTOTAL(109,Tab_TiOS_En[N_TiO2 (TiOS)]) -> 1.460942777 | O44: =SUBTOTAL(109,Tab_TiOS_En[N_ZrO2]) -> 0.7038428468 | P44: =SUBTOTAL(109,Tab_TiOS_En[N_ZnO]) -> 2.375665277 | Q44: =SUBTOTAL(109,Tab_TiOS_En[N_LiFePO4]) -> 1.53241202
C46: Zařízení | D46: Doba odepisování | E46: Jedn. cena (£) | F46: Jedn. cena (€) | G46: Roční odpis | H46: Sloupec1 | I46: Elektrický příkon | J46: Spotřeba zemního plynu | K46: Sloupec2 | L46: Sloupec3 | M46: Sloupec4 | N46: N_TiO2 (TiOS) | O46: N_ZrO2 | P46: N_ZnO | Q46: N_LiFePO4
B47: Zařízení | C47: TLAKOVÉ POTRUBÍ | D47: 3 | E47: =SUM(E48,E49,E50,E53,E54,E55) -> 111598.05 | F47: =SUM(F48,F49,F50,F53,F54,F55) -> 136219.1624 | G47: =SUM(G48,G49,G50,G53,G54,G55) -> 45406.38747 | H47: - | I47: - | J47: - | K47: - | L47: - | M47: - | N47: =$G47/Premise!C$13/Premise!$C$5 -> 0.1823079651 | O47: =$G47/Premise!D$13/Premise!$D$5 -> 0.1181717034 | P47: =$G47/Premise!E$13/Premise!$E$5 -> 0.3576890634 | Q47: =$G47/Premise!F$13/Premise!$F$5 -> 0.2307256942
C48: Příslušenství | D48: 3 | E48: 20804.88 | F48: =E48*Premise!$L$9 -> 25394.91799 | G48: =F48/D48 -> 8464.972663 | H48: - | I48: - | J48: - | K48: - | L48: - | M48: - | N48: =$G48/Premise!C$13/Premise!$C$5 -> 0.03398711121 | O48: =$G48/Premise!D$13/Premise!$D$5 -> 0.0220303859 | P48: =$G48/Premise!E$13/Premise!$E$5 -> 0.06668286804 | Q48: =$G48/Premise!F$13/Premise!$F$5 -> 0.04301347901
C49: Potrubí | D49: 3 | E49: =14698.44+1200 -> 15898.44 | F49: =E49*Premise!$L$9 -> 19406.00378 | G49: 6468.667927 | H49: - | I49: - | J49: - | K49: - | L49: - | M49: - | N49: =$G49/Premise!C$13/Premise!$C$5 -> 0.02597188969 | O49: =$G49/Premise!D$13/Premise!$D$5 -> 0.01683493337 | P49: =$G49/Premise!E$13/Premise!$E$5 -> 0.05095696666 | Q49: =$G49/Premise!F$13/Premise!$F$5 -> 0.03286955826
C50: Ventily | D50: 3 | E50: =SUM(E51:E52) -> 35654.73 | F50: =E50*Premise!$L$9 -> 43520.98855 | G50: 14506.99618 | H50: - | I50: 2.2 | J50: - | K50: - | L50: - | M50: - | N50: =$G50/Premise!C$13/Premise!$C$5 -> 0.05824601121 | O50: =$G50/Premise!D$13/Premise!$D$5 -> 0.03775496235 | P50: =$G50/Premise!E$13/Premise!$E$5 -> 0.1142789411 | Q50: =$G50/Premise!F$13/Premise!$F$5 -> 0.0737151082
C51: Standard Ventily | D51: 3 | E51: 25879.73 | F51: =E51*Premise!$L$9 -> 31589.39734 | G51: 10529.79911 | H51: - | I51: - | J51: - | K51: - | L51: - | M51: - | N51: =$G51/Premise!C$13/Premise!$C$5 -> 0.0422774494 | O51: =$G51/Premise!D$13/Premise!$D$5 -> 0.02740416859 | P51: =$G51/Premise!E$13/Premise!$E$5 -> 0.0829485496 | Q51: =$G51/Premise!F$13/Premise!$F$5 -> 0.05350558249
C52: BPR | D52: 3 | E52: 9775 | F52: =E52*Premise!$L$9 -> 11931.59121 | G52: 3977.19707 | H52: - | I52: - | J52: - | K52: - | L52: - | M52: - | N52: =$G52/Premise!C$13/Premise!$C$5 -> 0.0159685618 | O52: =$G52/Premise!D$13/Premise!$D$5 -> 0.01035079377 | P52: =$G52/Premise!E$13/Premise!$E$5 -> 0.03133039148 | Q52: =$G52/Premise!F$13/Premise!$F$5 -> 0.02020952571
C53: Konstrukce | D53: 3 | E53: 14952 | F53: =E53*Premise!$L$9 -> 18250.75722 | G53: 6083.585739 | H53: - | I53: - | J53: - | K53: - | L53: - | M53: - | N53: =$G53/Premise!C$13/Premise!$C$5 -> 0.02442577351 | O53: =$G53/Premise!D$13/Premise!$D$5 -> 0.01583274357 | P53: =$G53/Premise!E$13/Premise!$E$5 -> 0.04792347964 | Q53: =$G53/Premise!F$13/Premise!$F$5 -> 0.03091282132
C54: Nádrže | D54: 3 | E54: 21408 | F54: =E54*Premise!$L$9 -> 26131.10022 | G54: 8710.36674 | H54: - | I54: 0.25 | J54: - | K54: - | L54: - | M54: - | N54: =$G54/Premise!C$13/Premise!$C$5 -> 0.03497237556 | O54: =$G54/Premise!D$13/Premise!$D$5 -> 0.02266903253 | P54: =$G54/Premise!E$13/Premise!$E$5 -> 0.06861596121 | Q54: =$G54/Premise!F$13/Premise!$F$5 -> 0.04426041191
C55: Míchačky | D55: 3 | E55: 2880 | F55: =E55*Premise!$L$9 -> 3515.394648 | G55: 1171.798216 | H55: - | I55: - | J55: - | K55: - | L55: - | M55: - | N55: =$G55/Premise!C$13/Premise!$C$5 -> 0.004704803886 | O55: =$G55/Premise!D$13/Premise!$D$5 -> 0.003049645631 | P55: =$G55/Premise!E$13/Premise!$E$5 -> 0.0092308468 | Q55: =$G55/Premise!F$13/Premise!$F$5 -> 0.005954315504
C56: VÝMĚNÍK TEPLA | D56: 3 | E56: =SUM(E61,E57) -> 60581.2 | F56: =SUM(F61,F57) -> 73946.81468 | G56: =SUM(G61,G57) -> 24648.93823 | H56: - | I56: - | J56: - | K56: - | L56: - | M56: - | N56: =$G56/Premise!C$13/Premise!$C$5 -> 0.0989662032 | O56: =$G56/Premise!D$13/Premise!$D$5 -> 0.06414971942 | P56: =$G56/Premise!E$13/Premise!$E$5 -> 0.1941721445 | Q56: =$G56/Premise!F$13/Premise!$F$5 -> 0.1252498536
C57: E-201 | D57: 3 | E57: =SUM(E58:E60) -> 33670 | F57: =E57*Premise!$L$9 -> 41098.38118 | G57: =F57/D57 -> 13699.46039 | H57: - | I57: - | J57: - | K57: - | L57: - | M57: - | N57: =$G57/Premise!C$13/Premise!$C$5 -> 0.05500373155 | O57: =$G57/Premise!D$13/Premise!$D$5 -> 0.03565332236 | P57: =$G57/Premise!E$13/Premise!$E$5 -> 0.1079175735 | Q57: =$G57/Premise!F$13/Premise!$F$5 -> 0.06961173716
C58: Materials | D58: 3 | E58: 10170 | F58: =E58*Premise!$L$9 -> 12413.73735 | G58: 4137.912451 | H58: - | I58: - | J58: - | K58: - | L58: - | M58: - | N58: =$G58/Premise!C$13/Premise!$C$5 -> 0.01661383872 | O58: =$G58/Premise!D$13/Premise!$D$5 -> 0.01076906114 | P58: =$G58/Premise!E$13/Premise!$E$5 -> 0.03259642776 | Q58: =$G58/Premise!F$13/Premise!$F$5 -> 0.02102617662
C59: Design | D59: 3 | E59: 3500 | F59: =E59*Premise!$L$9 -> 4272.180996 | G59: 1424.060332 | H59: - | I59: - | J59: - | K59: - | L59: - | M59: - | N59: =$G59/Premise!C$13/Premise!$C$5 -> 0.005717643612 | O59: =$G59/Premise!D$13/Premise!$D$5 -> 0.003706166566 | P59: =$G59/Premise!E$13/Premise!$E$5 -> 0.01121804299 | Q59: =$G59/Premise!F$13/Premise!$F$5 -> 0.007236147314
C60: Fabrication | D60: 3 | E60: 20000 | F60: =E60*Premise!$L$9 -> 24412.46284 | G60: 8137.487612 | H60: - | I60: - | J60: - | K60: - | L60: - | M60: - | N60: =$G60/Premise!C$13/Premise!$C$5 -> 0.03267224921 | O60: =$G60/Premise!D$13/Premise!$D$5 -> 0.02117809466 | P60: =$G60/Premise!E$13/Premise!$E$5 -> 0.06410310278 | Q60: =$G60/Premise!F$13/Premise!$F$5 -> 0.04134941322
C61: E-310 | D61: 3 | E61: =SUM(E62:E64) -> 26911.2 | F61: =E61*Premise!$L$9 -> 32848.43349 | G61: 10949.47783 | H61: - | I61: - | J61: - | K61: - | L61: - | M61: - | N61: =$G61/Premise!C$13/Premise!$C$5 -> 0.04396247165 | O61: =$G61/Premise!D$13/Premise!$D$5 -> 0.02849639705 | P61: =$G61/Premise!E$13/Premise!$E$5 -> 0.08625457097 | Q61: =$G61/Premise!F$13/Premise!$F$5 -> 0.05563811645
C62: Materials | D62: 3 | E62: 5911.2 | F62: =E62*Premise!$L$9 -> 7215.347516 | G62: 2405.115839 | H62: - | I62: - | J62: - | K62: - | L62: - | M62: - | N62: =$G62/Premise!C$13/Premise!$C$5 -> 0.009656609977 | O62: =$G62/Premise!D$13/Premise!$D$5 -> 0.006259397658 | P62: =$G62/Premise!E$13/Premise!$E$5 -> 0.01894631306 | Q62: =$G62/Premise!F$13/Premise!$F$5 -> 0.01222123257
C63: Design | D63: 3 | E63: 3500 | F63: =E63*Premise!$L$9 -> 4272.180996 | G63: 1424.060332 | H63: - | I63: - | J63: - | K63: - | L63: - | M63: - | N63: =$G63/Premise!C$13/Premise!$C$5 -> 0.005717643612 | O63: =$G63/Premise!D$13/Premise!$D$5 -> 0.003706166566 | P63: =$G63/Premise!E$13/Premise!$E$5 -> 0.01121804299 | Q63: =$G63/Premise!F$13/Premise!$F$5 -> 0.007236147314
C64: Fabrication | D64: 3 | E64: 17500 | F64: =E64*Premise!$L$9 -> 21360.90498 | G64: 7120.30166 | H64: - | I64: - | J64: - | K64: - | L64: - | M64: - | N64: =$G64/Premise!C$13/Premise!$C$5 -> 0.02858821806 | O64: =$G64/Premise!D$13/Premise!$D$5 -> 0.01853083283 | P64: =$G64/Premise!E$13/Premise!$E$5 -> 0.05609021493 | Q64: =$G64/Premise!F$13/Premise!$F$5 -> 0.03618073657
C65: ČERPADLA | D65: 3 | E65: =SUM(E72,E66) -> 109179.34 | F65: =SUM(F72,F66) -> 133266.829 | G65: =SUM(G72,G66) -> 44422.27634 | H65: - | I65: - | J65: - | K65: - | L65: - | M65: - | N65: =$G65/Premise!C$13/Premise!$C$5 -> 0.1783567303 | O65: =$G65/Premise!D$13/Premise!$D$5 -> 0.1156105199 | P65: =$G65/Premise!E$13/Premise!$E$5 -> 0.3499367227 | Q65: =$G65/Premise!F$13/Premise!$F$5 -> 0.2257250822
C66: Feed Pumps | D66: 3 | E66: =SUM(E67:E71) -> 2463.34 | F66: =E66*Premise!$L$9 -> 3006.80981 | G66: =F66/D66 -> 1002.269937 | H66: - | I66: - | J66: - | K66: - | L66: - | M66: - | N66: =$G66/Premise!C$13/Premise!$C$5 -> 0.004024142919 | O66: =$G66/Premise!D$13/Premise!$D$5 -> 0.002608442385 | P66: =$G66/Premise!E$13/Premise!$E$5 -> 0.00789538686 | Q66: =$G66/Premise!F$13/Premise!$F$5 -> 0.005092883178
C67: Pump 101 | D67: 3 | E67: 359.33 | F67: =E67*Premise!$L$9 -> 438.6065135 | G67: 146.2021712 | H67: - | I67: 4 | J67: - | K67: - | L67: - | M67: - | N67: =$G67/Premise!C$13/Premise!$C$5 -> 0.0005870059655 | O67: =$G67/Premise!D$13/Premise!$D$5 -> 0.0003804962378 | P67: =$G67/Premise!E$13/Premise!$E$5 -> 0.001151708396 | Q67: =$G67/Premise!F$13/Premise!$F$5 -> 0.0007429042326
C68: Pump 103 | D68: 3 | E68: 359.33 | F68: =E68*Premise!$L$9 -> 438.6065135 | G68: 146.2021712 | H68: - | I68: 4 | J68: - | K68: - | L68: - | M68: - | N68: =$G68/Premise!C$13/Premise!$C$5 -> 0.0005870059655 | O68: =$G68/Premise!D$13/Premise!$D$5 -> 0.0003804962378 | P68: =$G68/Premise!E$13/Premise!$E$5 -> 0.001151708396 | Q68: =$G68/Premise!F$13/Premise!$F$5 -> 0.0007429042326
C69: Pump 105 | D69: 3 | E69: 374.26 | F69: =E69*Premise!$L$9 -> 456.830417 | G69: 152.2768057 | H69: - | I69: 4 | J69: - | K69: - | L69: - | M69: - | N69: =$G69/Premise!C$13/Premise!$C$5 -> 0.0006113957995 | O69: =$G69/Premise!D$13/Premise!$D$5 -> 0.0003963056854 | P69: =$G69/Premise!E$13/Premise!$E$5 -> 0.001199561362 | Q69: =$G69/Premise!F$13/Premise!$F$5 -> 0.0007737715696
C70: Pump 107 | D70: 3 | E70: 370.42 | F70: =E70*Premise!$L$9 -> 452.1432242 | G70: 150.7144081 | H70: - | I70: 4 | J70: - | K70: - | L70: - | M70: - | N70: =$G70/Premise!C$13/Premise!$C$5 -> 0.0006051227276 | O70: =$G70/Premise!D$13/Premise!$D$5 -> 0.0003922394912 | P70: =$G70/Premise!E$13/Premise!$E$5 -> 0.001187253567 | Q70: =$G70/Premise!F$13/Premise!$F$5 -> 0.0007658324823
C71: Pump 301 | D71: 3 | E71: 1000 | F71: =E71*Premise!$L$9 -> 1220.623142 | G71: 406.8743806 | H71: - | I71: 4 | J71: - | K71: - | L71: - | M71: - | N71: =$G71/Premise!C$13/Premise!$C$5 -> 0.001633612461 | O71: =$G71/Premise!D$13/Premise!$D$5 -> 0.001058904733 | P71: =$G71/Premise!E$13/Premise!$E$5 -> 0.003205155139 | Q71: =$G71/Premise!F$13/Premise!$F$5 -> 0.002067470661
C72: High Pressure Pumps | D72: 3 | E72: =SUM(E73:E76) -> 106716 | F72: =E72*Premise!$L$9 -> 130260.0192 | G72: 43420.0064 | H72: - | I72: - | J72: - | K72: - | L72: - | M72: - | N72: =$G72/Premise!C$13/Premise!$C$5 -> 0.1743325873 | O72: =$G72/Premise!D$13/Premise!$D$5 -> 0.1130020775 | P72: =$G72/Premise!E$13/Premise!$E$5 -> 0.3420413358 | Q72: =$G72/Premise!F$13/Premise!$F$5 -> 0.2206321991
C73: Pump 102 | D73: 3 | E73: 22398 | F73: =E73*Premise!$L$9 -> 27339.51713 | G73: 9113.172377 | H73: - | I73: 18.5 | J73: - | K73: - | L73: - | M73: - | N73: =$G73/Premise!C$13/Premise!$C$5 -> 0.03658965189 | O73: =$G73/Premise!D$13/Premise!$D$5 -> 0.02371734821 | P73: =$G73/Premise!E$13/Premise!$E$5 -> 0.0717890648 | Q73: =$G73/Premise!F$13/Premise!$F$5 -> 0.04630720787
C74: Pump 104 | D74: 3 | E74: 22398 | F74: =E74*Premise!$L$9 -> 27339.51713 | G74: 9113.172377 | H74: - | I74: 18.5 | J74: - | K74: - | L74: - | M74: - | N74: =$G74/Premise!C$13/Premise!$C$5 -> 0.03658965189 | O74: =$G74/Premise!D$13/Premise!$D$5 -> 0.02371734821 | P74: =$G74/Premise!E$13/Premise!$E$5 -> 0.0717890648 | Q74: =$G74/Premise!F$13/Premise!$F$5 -> 0.04630720787
C75: Pump 106 | D75: 3 | E75: 16614 | F75: =E75*Premise!$L$9 -> 20279.43288 | G75: 6759.810959 | H75: - | I75: 18.5 | J75: - | K75: - | L75: - | M75: - | N75: =$G75/Premise!C$13/Premise!$C$5 -> 0.02714083742 | O75: =$G75/Premise!D$13/Premise!$D$5 -> 0.01759264324 | P75: =$G75/Premise!E$13/Premise!$E$5 -> 0.05325044748 | Q75: =$G75/Premise!F$13/Premise!$F$5 -> 0.03434895756
C76: Pump 108 | D76: 3 | E76: 45306 | F76: =E76*Premise!$L$9 -> 55301.55206 | G76: 18433.85069 | H76: - | I76: 18.5 | J76: - | K76: - | L76: - | M76: - | N76: =$G76/Premise!C$13/Premise!$C$5 -> 0.07401244614 | O76: =$G76/Premise!D$13/Premise!$D$5 -> 0.04797473784 | P76: =$G76/Premise!E$13/Premise!$E$5 -> 0.1452127587 | Q76: =$G76/Premise!F$13/Premise!$F$5 -> 0.09366882577
C77: OHŘÍVAČ | D77: 3 | E77: 275724 | F77: =E77*Premise!$L$9 -> 336555.0951 | G77: 112185.0317 | H77: - | I77: 4 | J77: 15 | K77: - | L77: - | M77: - | N77: =$G77/Premise!C$13/Premise!$C$5 -> 0.4504261621 | O77: =$G77/Premise!D$13/Premise!$D$5 -> 0.2919654486 | P77: =$G77/Premise!E$13/Premise!$E$5 -> 0.8837381955 | Q77: =$G77/Premise!F$13/Premise!$F$5 -> 0.5700512805
C78: KONTROLNÍ SYSTÉM | D78: 3 | E78: =SUM(E79:E81,E82) -> 56033.81 | F78: =SUM(F79:F81,F82) -> 68396.16521 | G78: =SUM(G79:G81,G82) -> 22798.72174 | H78: - | I78: - | J78: - | K78: - | L78: - | M78: - | N78: =$G78/Premise!C$13/Premise!$C$5 -> 0.09153753023 | O78: =$G78/Premise!D$13/Premise!$D$5 -> 0.05933446662 | P78: =$G78/Premise!E$13/Premise!$E$5 -> 0.1795970541 | Q78: =$G78/Premise!F$13/Premise!$F$5 -> 0.1158482582
C79: Level Control | D79: 3 | E79: =1864.08+652.8 -> 2516.88 | F79: =E79*Premise!$L$9 -> 3072.161973 | G79: =F79/D79 -> 1024.053991 | H79: - | I79: - | J79: - | K79: - | L79: - | M79: - | N79: =$G79/Premise!C$13/Premise!$C$5 -> 0.00411160653 | O79: =$G79/Premise!D$13/Premise!$D$5 -> 0.002665136145 | P79: =$G79/Premise!E$13/Premise!$E$5 -> 0.008066990866 | Q79: =$G79/Premise!F$13/Premise!$F$5 -> 0.005203575557
C80: Flow Control | D80: 3 | E80: 13981.2 | F80: =E80*Premise!$L$9 -> 17065.77627 | G80: 5688.59209 | H80: - | I80: - | J80: - | K80: - | L80: - | M80: - | N80: =$G80/Premise!C$13/Premise!$C$5 -> 0.02283986253 | O80: =$G80/Premise!D$13/Premise!$D$5 -> 0.01480475885 | P80: =$G80/Premise!E$13/Premise!$E$5 -> 0.04481191503 | Q80: =$G80/Premise!F$13/Premise!$F$5 -> 0.02890572081
C81: Pressure Control | D81: 3 | E81: 3025.73 | F81: =E81*Premise!$L$9 -> 3693.276059 | G81: 1231.09202 | H81: - | I81: - | J81: - | K81: - | L81: - | M81: - | N81: =$G81/Premise!C$13/Premise!$C$5 -> 0.00494287023 | O81: =$G81/Premise!D$13/Premise!$D$5 -> 0.003203959818 | P81: =$G81/Premise!E$13/Premise!$E$5 -> 0.009697934058 | Q81: =$G81/Premise!F$13/Premise!$F$5 -> 0.006255608003
C82: Control Panels | D82: 3 | E82: =SUM(E83:E87) -> 36510 | F82: =E82*Premise!$L$9 -> 44564.95091 | G82: 14854.98364 | H82: - | I82: - | J82: - | K82: - | L82: - | M82: - | N82: =$G82/Premise!C$13/Premise!$C$5 -> 0.05964319093 | O82: =$G82/Premise!D$13/Premise!$D$5 -> 0.03866061181 | P82: =$G82/Premise!E$13/Premise!$E$5 -> 0.1170202141 | Q82: =$G82/Premise!F$13/Premise!$F$5 -> 0.07548335383
C83: Control Panel 1 | D83: 3 | E83: 3798 | F83: =E83*Premise!$L$9 -> 4635.926693 | G83: 1545.308898 | H83: - | I83: - | J83: - | K83: - | L83: - | M83: - | N83: =$G83/Premise!C$13/Premise!$C$5 -> 0.006204460125 | O83: =$G83/Premise!D$13/Premise!$D$5 -> 0.004021720176 | P83: =$G83/Premise!E$13/Premise!$E$5 -> 0.01217317922 | Q83: =$G83/Premise!F$13/Premise!$F$5 -> 0.007852253571
C84: Control Panel 2 | D84: 3 | E84: 4170 | F84: =E84*Premise!$L$9 -> 5089.998501 | G84: 1696.666167 | H84: - | I84: - | J84: - | K84: - | L84: - | M84: - | N84: =$G84/Premise!C$13/Premise!$C$5 -> 0.006812163961 | O84: =$G84/Premise!D$13/Premise!$D$5 -> 0.004415632737 | P84: =$G84/Premise!E$13/Premise!$E$5 -> 0.01336549693 | Q84: =$G84/Premise!F$13/Premise!$F$5 -> 0.008621352657
C85: Control Panel 3 | D85: 3 | E85: 3798 | F85: =E85*Premise!$L$9 -> 4635.926693 | G85: 1545.308898 | H85: - | I85: - | J85: - | K85: - | L85: - | M85: - | N85: =$G85/Premise!C$13/Premise!$C$5 -> 0.006204460125 | O85: =$G85/Premise!D$13/Premise!$D$5 -> 0.004021720176 | P85: =$G85/Premise!E$13/Premise!$E$5 -> 0.01217317922 | Q85: =$G85/Premise!F$13/Premise!$F$5 -> 0.007852253571
C86: PLC HMI Panel | D86: 3 | E86: 9330 | F86: =E86*Premise!$L$9 -> 11388.41391 | G86: 3796.137971 | H86: - | I86: - | J86: - | K86: - | L86: - | M86: - | N86: =$G86/Premise!C$13/Premise!$C$5 -> 0.01524160426 | O86: =$G86/Premise!D$13/Premise!$D$5 -> 0.00987958116 | P86: =$G86/Premise!E$13/Premise!$E$5 -> 0.02990409744 | Q86: =$G86/Premise!F$13/Premise!$F$5 -> 0.01928950127
C87: Software HMI inc Hardware | D87: 3 | E87: 15414 | F87: =E87*Premise!$L$9 -> 18814.68511 | G87: 6271.561703 | H87: - | I87: - | J87: - | K87: - | L87: - | M87: - | N87: =$G87/Premise!C$13/Premise!$C$5 -> 0.02518050247 | O87: =$G87/Premise!D$13/Premise!$D$5 -> 0.01632195756 | P87: =$G87/Premise!E$13/Premise!$E$5 -> 0.04940426131 | Q87: =$G87/Premise!F$13/Premise!$F$5 -> 0.03186799277
C88: DIONIZÁTOR VODY | D88: 3 | E88: =E89 -> 31189.2 | F88: =F89 -> 38070.25929 | G88: 12690.08643 | H88: - | I88: - | J88: - | K88: - | L88: - | M88: - | N88: =$G88/Premise!C$13/Premise!$C$5 -> 0.05095106575 | O88: =$G88/Premise!D$13/Premise!$D$5 -> 0.0330263915 | P88: =$G88/Premise!E$13/Premise!$E$5 -> 0.09996622465 | Q88: =$G88/Premise!F$13/Premise!$F$5 -> 0.06448275594
C89: Twin Bed De-ioniser | D89: 3 | E89: 31189.2 | F89: =E89*Premise!$L$9 -> 38070.25929 | G89: 12690.08643 | H89: - | I89: 1.5 | J89: - | K89: - | L89: - | M89: - | N89: =$G89/Premise!C$13/Premise!$C$5 -> 0.05095106575 | O89: =$G89/Premise!D$13/Premise!$D$5 -> 0.0330263915 | P89: =$G89/Premise!E$13/Premise!$E$5 -> 0.09996622465 | Q89: =$G89/Premise!F$13/Premise!$F$5 -> 0.06448275594
C90: CHLADIČ | D90: 3 | E90: =E91 -> 24332.4 | F90: =F91 -> 29700.69054 | G90: =G91 -> 9900.230178 | H90: - | I90: - | J90: - | K90: - | L90: - | M90: - | N90: =$G90/Premise!C$13/Premise!$C$5 -> 0.03974971184 | O90: =$G90/Premise!D$13/Premise!$D$5 -> 0.02576569353 | P90: =$G90/Premise!E$13/Premise!$E$5 -> 0.0779891169 | Q90: =$G90/Premise!F$13/Premise!$F$5 -> 0.05030652311
C91: Dry Air Cooler | D91: 3 | E91: 24332.4 | F91: =E91*Premise!$L$9 -> 29700.69054 | G91: =F91/D91 -> 9900.230178 | H91: - | I91: 10.15 | J91: - | K91: - | L91: - | M91: - | N91: =$G91/Premise!C$13/Premise!$C$5 -> 0.03974971184 | O91: =$G91/Premise!D$13/Premise!$D$5 -> 0.02576569353 | P91: =$G91/Premise!E$13/Premise!$E$5 -> 0.0779891169 | Q91: =$G91/Premise!F$13/Premise!$F$5 -> 0.05030652311
C92: POST-PROCESSING | D92: 3 | E92: =SUM(E93:E97) -> 19320.5 | F92: =SUM(F93:F97) -> 23583.04941 | G92: 7861.01647 | H92: - | I92: - | J92: - | K92: - | L92: - | M92: - | N92: =$G92/Premise!C$13/Premise!$C$5 -> 0.03156220954 | O92: =$G92/Premise!D$13/Premise!$D$5 -> 0.0204585689 | P92: =$G92/Premise!E$13/Premise!$E$5 -> 0.06192519986 | Q92: =$G92/Premise!F$13/Premise!$F$5 -> 0.03994456691
C93: Pump 401 | D93: 3 | E93: 2743 | F93: =E93*Premise!$L$9 -> 3348.169278 | G93: 1116.056426 | H93: - | I93: 4 | J93: - | K93: - | L93: - | M93: - | N93: =$G93/Premise!C$13/Premise!$C$5 -> 0.004480998979 | O93: =$G93/Premise!D$13/Premise!$D$5 -> 0.002904575683 | P93: =$G93/Premise!E$13/Premise!$E$5 -> 0.008791740546 | Q93: =$G93/Premise!F$13/Premise!$F$5 -> 0.005671072023
C94: Pump 402 | D94: 3 | E94: 2820 | F94: =E94*Premise!$L$9 -> 3442.15726 | G94: 1147.385753 | H94: - | I94: 3 | J94: - | K94: - | L94: - | M94: - | N94: =$G94/Premise!C$13/Premise!$C$5 -> 0.004606787139 | O94: =$G94/Premise!D$13/Premise!$D$5 -> 0.002986111347 | P94: =$G94/Premise!E$13/Premise!$E$5 -> 0.009038537491 | Q94: =$G94/Premise!F$13/Premise!$F$5 -> 0.005830267264
C95: Pump 403 | D95: 3 | E95: 2121 | F95: =E95*Premise!$L$9 -> 2588.941684 | G95: 862.9805612 | H95: - | I95: 1.5 | J95: - | K95: - | L95: - | M95: - | N95: =$G95/Premise!C$13/Premise!$C$5 -> 0.003464892029 | O95: =$G95/Premise!D$13/Premise!$D$5 -> 0.002245936939 | P95: =$G95/Premise!E$13/Premise!$E$5 -> 0.006798134049 | Q95: =$G95/Premise!F$13/Premise!$F$5 -> 0.004385105272
C96: Pump 409-410 | D96: 3 | E96: 7596 | F96: =E96*Premise!$L$9 -> 9271.853385 | G96: 3090.617795 | H96: - | I96: 5.5 | J96: - | K96: - | L96: - | M96: - | N96: =$G96/Premise!C$13/Premise!$C$5 -> 0.01240892025 | O96: =$G96/Premise!D$13/Premise!$D$5 -> 0.008043440353 | P96: =$G96/Premise!E$13/Premise!$E$5 -> 0.02434635843 | Q96: =$G96/Premise!F$13/Premise!$F$5 -> 0.01570450714
C97: Neutralization Equipment | D97: 3 | E97: 4040.5 | F97: =E97*Premise!$L$9 -> 4931.927804 | G97: 1643.975935 | H97: - | I97: - | J97: - | K97: - | L97: - | M97: - | N97: =$G97/Premise!C$13/Premise!$C$5 -> 0.006600611147 | O97: =$G97/Premise!D$13/Premise!$D$5 -> 0.004278504574 | P97: =$G97/Premise!E$13/Premise!$E$5 -> 0.01295042934 | Q97: =$G97/Premise!F$13/Premise!$F$5 -> 0.008353615206
C98: INSTALACE ZAŘIZENÍ | D98: 3 | E98: 40000 | F98: =E98*Premise!$L$9 -> 48824.92567 | G98: 16274.97522 | H98: - | I98: - | J98: - | K98: - | L98: - | M98: - | N98: =$G98/Premise!C$13/Premise!$C$5 -> 0.06534449842 | O98: =$G98/Premise!D$13/Premise!$D$5 -> 0.04235618932 | P98: =$G98/Premise!E$13/Premise!$E$5 -> 0.1282062056 | Q98: =$G98/Premise!F$13/Premise!$F$5 -> 0.08269882644
C99: Celkem náklady na výr. zař. | E99: =SUBTOTAL(109,E98,E92,E90,E88,E78,E77,E65,E56,E47) -> 727958.5 | F99: =SUBTOTAL(109,F98,F92,F90,F88,F78,F77,F65,F56,F47) -> 888562.9914 | G99: =SUBTOTAL(109,G98,G92,G90,G88,G78,G77,G65,G56,G47) -> 296187.6638 | N99: =N47+N56+N65+N77+N78+N88+N90+N92+N98 -> 1.189202076 | O99: =O47+O56+O65+O77+O78+O88+O90+O92+O98 -> 0.7708387012 | P99: =P47+P56+P65+P77+P78+P88+P90+P92+P98 -> 2.333219927 | Q99: =Q47+Q56+Q65+Q77+Q78+Q88+Q90+Q92+Q98 -> 1.505032841
C100: HCT zařízení | N100: =N99*Premise!$C$5 -> 71.23320437 | O100: =O99*Premise!$D$5 -> 71.23320437 | P100: =P99*Premise!$E$5 -> 71.23320437 | Q100: =Q99*Premise!$F$5 -> 71.23320437
E102: Filtration time | F102: 1.5 | N102: 0 | O102: 1 | P102: 0 | Q102: 0
C103: Filtrace | D103: Životnost | E103: Jedn. cena (£) | F103: Jedn. cena (€) | G103: HCT filtrace | H103: Sloupec1 | I103: Sloupec2 | J103: Sloupec3 | K103: Sloupec33 | L103: Sloupec32 | M103: Sloupec4 | N103: N_TiO2 (TiOS) | O103: N_ZrO2 | P103: N_ZnO | Q103: N_LiFePO4
B104: Filtrace | C104: FILTR 101 | D104: 10000 | E104: 9000 | F104: =E104*Premise!$L$9 -> 10985.60828 | G104: =F104/D104 -> 1.098560828 | H104: - | I104: - | J104: - | K104: - | L104: - | M104: - | N104: =$G104*$F$102/Premise!$C$5*$N$102 -> 0 | O104: =$G104*$F$102/Premise!$D$5*$O$102 -> 0.01783184982 | P104: =$G104*$F$102/Premise!$E$5*$P$102 -> 0 | Q104: =$G104*$F$102/Premise!$F$5*$Q$102 -> 0
C105: FILTR 101 | D105: 10000 | E105: 9000 | F105: =E105*Premise!$L$9 -> 10985.60828 | G105: 1.098560828 | H105: - | I105: - | J105: - | K105: - | L105: - | M105: - | N105: =$G105*$F$102/Premise!$C$5*$N$102 -> 0 | O105: =$G105*$F$102/Premise!$D$5*$O$102 -> 0.01783184982 | P105: =$G105*$F$102/Premise!$E$5*$P$102 -> 0 | Q105: =$G105*$F$102/Premise!$F$5*$Q$102 -> 0
C106: FILTR 101 | D106: 10000 | E106: 9000 | F106: =E106*Premise!$L$9 -> 10985.60828 | G106: 1.098560828 | H106: - | I106: - | J106: - | K106: - | L106: - | M106: - | N106: =$G106*$F$102/Premise!$C$5*$N$102 -> 0 | O106: =$G106*$F$102/Premise!$D$5*$O$102 -> 0.01783184982 | P106: =$G106*$F$102/Premise!$E$5*$P$102 -> 0 | Q106: =$G106*$F$102/Premise!$F$5*$Q$102 -> 0
C107: FILTR 102 | D107: 6000 | E107: 3000 | F107: =E107*Premise!$L$9 -> 3661.869425 | G107: 0.6103115709 | H107: - | I107: - | J107: - | K107: - | L107: - | M107: - | N107: =$G107*$F$102/Premise!$C$5*$N$102 -> 0 | O107: =$G107*$F$102/Premise!$D$5*$O$102 -> 0.009906583231 | P107: =$G107*$F$102/Premise!$E$5*$P$102 -> 0 | Q107: =$G107*$F$102/Premise!$F$5*$Q$102 -> 0
C108: FILTR 102 | D108: 6000 | E108: 3000 | F108: =E108*Premise!$L$9 -> 3661.869425 | G108: 0.6103115709 | H108: - | I108: - | J108: - | K108: - | L108: - | M108: - | N108: =$G108*$F$102/Premise!$C$5*$N$102 -> 0 | O108: =$G108*$F$102/Premise!$D$5*$O$102 -> 0.009906583231 | P108: =$G108*$F$102/Premise!$E$5*$P$102 -> 0 | Q108: =$G108*$F$102/Premise!$F$5*$Q$102 -> 0
C109: FILTR 102 | D109: 3000 | E109: 3000 | F109: =E109*Premise!$L$9 -> 3661.869425 | G109: 1.220623142 | H109: - | I109: - | J109: - | K109: - | L109: - | M109: - | N109: =$G109*$F$102/Premise!$C$5*$N$102 -> 0 | O109: =$G109*$F$102/Premise!$D$5*$O$102 -> 0.01981316646 | P109: =$G109*$F$102/Premise!$E$5*$P$102 -> 0 | Q109: =$G109*$F$102/Premise!$F$5*$Q$102 -> 0
C110: Celkem náklady na filtraci | E110: =SUBTOTAL(109,Tab_TiOS_Ft[Jedn. cena (£)]) -> 36000 | F110: =SUBTOTAL(109,Tab_TiOS_Ft[Jedn. cena (€)]) -> 43942.4331 | G110: =SUBTOTAL(109,Tab_TiOS_Ft[HCT filtrace]) -> 5.736928766 | N110: =SUBTOTAL(109,Tab_TiOS_Ft[N_TiO2 (TiOS)]) -> 0 | O110: =SUBTOTAL(109,Tab_TiOS_Ft[N_ZrO2]) -> 0.09312188237 | P110: =SUBTOTAL(109,Tab_TiOS_Ft[N_ZnO]) -> 0 | Q110: =SUBTOTAL(109,Tab_TiOS_Ft[N_LiFePO4]) -> 0
C111: HCT zařízení | N111: =N110*Premise!$C$5 -> 0 | O111: =O110*Premise!$D$5 -> 8.60539315 | P111: =P110*Premise!$E$5 -> 0 | Q111: =Q110*Premise!$F$5 -> 0
E113: Snížená daň | F113: 0.2
E114: Zvýšená daň | F114: 0.4
E115: Hranice daně | F115: 35000
E116: Pojistné | F116: 0.13
C117: Zaměstnanec | D117: Stát | E117: Rořní mzda (£) | F117: Rořní mzda (€) | G117: Daň | H117: Sloupec1 | I117: Pojišťění | J117: Osobní náklady | K117: Sloupec2 | L117: Sloupec3 | M117: Sloupec4 | N117: N_TiO2 (TiOS) | O117: N_ZrO2 | P117: N_ZnO | Q117: N_LiFePO4
B118: Personál | C118: DOKTORAND | D118: UK | E118: 33000 | F118: =E118*Premise!$L$9 -> 40280.56368 | G118: =IF(F118>$F$115,$F$115*$F$113+((F118-$F$115)*$F$114),F118*$F$113) -> 9112.225472 | H118: - | I118: =F118*$F$116 -> 5236.473278 | J118: 54629.26243 | K118: - | L118: - | M118: - | N118: =$J118/Premise!C$13/Premise!$C$5 -> 0.219338076 | O118: =$J118/Premise!D$13/Premise!$D$5 -> 0.1421745564 | P118: =$J118/Premise!E$13/Premise!$E$5 -> 0.4303423109 | Q118: =$J118/Premise!F$13/Premise!$F$5 -> 0.2775903392
C119: DĚLNÍK | D119: UK | E119: 16000 | F119: =E119*Premise!$L$9 -> 19529.97027 | G119: =IF(F119>$F$115,$F$115*$F$113+((F119-$F$115)*$F$114),F119*$F$113) -> 3905.994054 | H119: - | I119: =F119*$F$116 -> 2538.896135 | J119: 25974.86046 | K119: - | L119: - | M119: - | N119: =$J119/Premise!C$13/Premise!$C$5 -> 0.1042898195 | O119: =$J119/Premise!D$13/Premise!$D$5 -> 0.06760047816 | P119: =$J119/Premise!E$13/Premise!$E$5 -> 0.2046171041 | Q119: =$J119/Premise!F$13/Premise!$F$5 -> 0.131987327
C120: INŽENÝR | D120: UK | E120: 35000 | F120: =E120*Premise!$L$9 -> 42721.80996 | G120: =IF(F120>$F$115,$F$115*$F$113+((F120-$F$115)*$F$114),F120*$F$113) -> 10088.72399 | H120: - | I120: =F120*$F$116 -> 5553.835295 | J120: 58364.36924 | K120: - | L120: - | M120: - | N120: =$J120/Premise!C$13/Premise!$C$5 -> 0.2343346384 | O120: =$J120/Premise!D$13/Premise!$D$5 -> 0.1518953018 | P120: =$J120/Premise!E$13/Premise!$E$5 -> 0.4597656351 | Q120: =$J120/Premise!F$13/Premise!$F$5 -> 0.2965697198
C121: MANŽER | D121: UK | E121: 50000 | F121: =E121*Premise!$L$9 -> 61031.15709 | G121: =IF(F121>$F$115,$F$115*$F$113+((F121-$F$115)*$F$114),F121*$F$113) -> 17412.46284 | H121: - | I121: =F121*$F$116 -> 7934.050422 | J121: 86377.67035 | K121: - | L121: - | M121: - | N121: =$J121/Premise!C$13/Premise!$C$5 -> 0.3468088563 | O121: =$J121/Premise!D$13/Premise!$D$5 -> 0.2248008927 | P121: =$J121/Premise!E$13/Premise!$E$5 -> 0.6804405664 | Q121: =$J121/Premise!F$13/Premise!$F$5 -> 0.4389150748
C122: Celkem osobní náklady | E122: =SUBTOTAL(109,Tab_TiOS_Per[Rořní mzda (£)]) -> 134000 | F122: =SUBTOTAL(109,Tab_TiOS_Per[Rořní mzda (€)]) -> 163563.501 | G122: =SUBTOTAL(109,Tab_TiOS_Per[Daň]) -> 40519.40635 | I122: =SUBTOTAL(109,Tab_TiOS_Per[Pojišťění]) -> 21263.25513 | J122: =SUBTOTAL(109,Tab_TiOS_Per[Osobní náklady]) -> 225346.1625 | N122: =SUBTOTAL(109,Tab_TiOS_Per[N_TiO2 (TiOS)]) -> 0.9047713902 | O122: =SUBTOTAL(109,Tab_TiOS_Per[N_ZrO2]) -> 0.586471229 | P122: =SUBTOTAL(109,Tab_TiOS_Per[N_ZnO]) -> 1.775165616 | Q122: =SUBTOTAL(109,Tab_TiOS_Per[N_LiFePO4]) -> 1.145062461
C123: HCT HR | N123: =Tab_TiOS_Per[[#Totals],[N_TiO2 (TiOS)]]*Premise!$C$5 -> 54.19580627 | O123: =Tab_TiOS_Per[[#Totals],[N_ZrO2]]*Premise!$D$5 -> 54.19580627 | P123: =Tab_TiOS_Per[[#Totals],[N_ZnO]]*Premise!$E$5 -> 54.19580627 | Q123: =Tab_TiOS_Per[[#Totals],[N_LiFePO4]]*Premise!$F$5 -> 54.19580627
C125: Další náklady | D125: Doba odepisování | E125: Jedn. cena (£) | F125: Jedn. cena (€) | G125: Roční náklady | H125: Sloupec1 | I125: Sloupec2 | J125: Sloupec3 | K125: Sloupec33 | L125: Sloupec32 | M125: Sloupec4 | N125: N_TiO2 (TiOS) | O125: N_ZrO2 | P125: N_ZnO | Q125: N_LiFePO4
B126: Ostatní | C126: HALDWARE/SOFTWARE | D126: 1 | E126: =SUM(E127:E133) -> 1000 | F126: =SUM(F127:F133) -> 1220.623142 | G126: 1220.623142 | H126: - | I126: - | J126: - | K126: - | L126: - | M126: - | N126: =SUM(N127:N133) -> 0.004900837382 | O126: =SUM(O127:O133) -> 0.003176714199 | P126: =SUM(P127:P133) -> 0.009615465416 | Q126: =SUM(Q127:Q133) -> 0.006202411983
C127: Laboratory equipment | D127: 1 | E127: 1000 | F127: =IF(ISERROR(E127*Premise!$L$9)=TRUE,0,E127*Premise!$L$9) -> 1220.623142 | G127: =Tab_TiOS_Oth[[#This Row],[Jedn. cena (€)]]/Tab_TiOS_Oth[[#This Row],[Doba odepisování]] -> 1220.623142 | H127: - | I127: - | J127: - | K127: - | L127: - | M127: - | N127: =$G127/Premise!C$13/Premise!$C$5 -> 0.004900837382 | O127: =$G127/Premise!D$13/Premise!$D$5 -> 0.003176714199 | P127: =$G127/Premise!E$13/Premise!$E$5 -> 0.009615465416 | Q127: =$G127/Premise!F$13/Premise!$F$5 -> 0.006202411983
C128: Hardware depreciation | D128: 1 | E128: - | F128: =IF(ISERROR(E128*Premise!$L$9)=TRUE,0,E128*Premise!$L$9) -> 0 | G128: =Tab_TiOS_Oth[[#This Row],[Jedn. cena (€)]]/Tab_TiOS_Oth[[#This Row],[Doba odepisování]] -> 0 | H128: - | I128: - | J128: - | K128: - | L128: - | M128: - | N128: =$G128/Premise!C$13/Premise!$C$5 -> 0 | O128: =$G128/Premise!D$13/Premise!$D$5 -> 0 | P128: =$G128/Premise!E$13/Premise!$E$5 -> 0 | Q128: =$G128/Premise!F$13/Premise!$F$5 -> 0
C129: Maintenance (hardware) | D129: 1 | E129: - | F129: =IF(ISERROR(E129*Premise!$L$9)=TRUE,0,E129*Premise!$L$9) -> 0 | G129: =Tab_TiOS_Oth[[#This Row],[Jedn. cena (€)]]/Tab_TiOS_Oth[[#This Row],[Doba odepisování]] -> 0 | H129: - | I129: - | J129: - | K129: - | L129: - | M129: - | N129: =$G129/Premise!C$13/Premise!$C$5 -> 0 | O129: =$G129/Premise!D$13/Premise!$D$5 -> 0 | P129: =$G129/Premise!E$13/Premise!$E$5 -> 0 | Q129: =$G129/Premise!F$13/Premise!$F$5 -> 0
C130: Software depreciation | D130: 1 | E130: - | F130: =IF(ISERROR(E130*Premise!$L$9)=TRUE,0,E130*Premise!$L$9) -> 0 | G130: =Tab_TiOS_Oth[[#This Row],[Jedn. cena (€)]]/Tab_TiOS_Oth[[#This Row],[Doba odepisování]] -> 0 | H130: - | I130: - | J130: - | K130: - | L130: - | M130: - | N130: =$G130/Premise!C$13/Premise!$C$5 -> 0 | O130: =$G130/Premise!D$13/Premise!$D$5 -> 0 | P130: =$G130/Premise!E$13/Premise!$E$5 -> 0 | Q130: =$G130/Premise!F$13/Premise!$F$5 -> 0
C131: Maintenance, upgrade, licence fees (sofware) | D131: 1 | E131: - | F131: =IF(ISERROR(E131*Premise!$L$9)=TRUE,0,E131*Premise!$L$9) -> 0 | G131: =Tab_TiOS_Oth[[#This Row],[Jedn. cena (€)]]/Tab_TiOS_Oth[[#This Row],[Doba odepisování]] -> 0 | H131: - | I131: - | J131: - | K131: - | L131: - | M131: - | N131: =$G131/Premise!C$13/Premise!$C$5 -> 0 | O131: =$G131/Premise!D$13/Premise!$D$5 -> 0 | P131: =$G131/Premise!E$13/Premise!$E$5 -> 0 | Q131: =$G131/Premise!F$13/Premise!$F$5 -> 0
C132: Small assets | D132: 1 | E132: - | F132: =IF(ISERROR(E132*Premise!$L$9)=TRUE,0,E132*Premise!$L$9) -> 0 | G132: =Tab_TiOS_Oth[[#This Row],[Jedn. cena (€)]]/Tab_TiOS_Oth[[#This Row],[Doba odepisování]] -> 0 | H132: - | I132: - | J132: - | K132: - | L132: - | M132: - | N132: =$G132/Premise!C$13/Premise!$C$5 -> 0 | O132: =$G132/Premise!D$13/Premise!$D$5 -> 0 | P132: =$G132/Premise!E$13/Premise!$E$5 -> 0 | Q132: =$G132/Premise!F$13/Premise!$F$5 -> 0
C133: Overhead material (office supplies, papers, toners,…) | D133: 1 | E133: - | F133: =IF(ISERROR(E133*Premise!$L$9)=TRUE,0,E133*Premise!$L$9) -> 0 | G133: =Tab_TiOS_Oth[[#This Row],[Jedn. cena (€)]]/Tab_TiOS_Oth[[#This Row],[Doba odepisování]] -> 0 | H133: - | I133: - | J133: - | K133: - | L133: - | M133: - | N133: =$G133/Premise!C$13/Premise!$C$5 -> 0 | O133: =$G133/Premise!D$13/Premise!$D$5 -> 0 | P133: =$G133/Premise!E$13/Premise!$E$5 -> 0 | Q133: =$G133/Premise!F$13/Premise!$F$5 -> 0
C134: NÁKLADY NA PROSTOR | D134: 1 | E134: =SUM(E135:E144) -> 66000 | F134: =SUM(F135:F144) -> 80561.12736 | G134: 80561.12736 | H134: - | I134: - | J134: - | K134: - | L134: - | M134: - | N134: =SUM(N135:N144) -> 0.3234552672 | O134: =SUM(O135:O144) -> 0.2096631372 | P134: =SUM(P135:P144) -> 0.6346207175 | Q134: =SUM(Q135:Q144) -> 0.4093591909
C135: Rent of space | D135: 1 | E135: 40000 | F135: =IF(ISERROR(E135*Premise!$L$9)=TRUE,0,E135*Premise!$L$9) -> 48824.92567 | G135: =Tab_TiOS_Oth[[#This Row],[Jedn. cena (€)]]/Tab_TiOS_Oth[[#This Row],[Doba odepisování]] -> 48824.92567 | H135: - | I135: - | J135: - | K135: - | L135: - | M135: - | N135: =$G135/Premise!C$13/Premise!$C$5 -> 0.1960334953 | O135: =$G135/Premise!D$13/Premise!$D$5 -> 0.127068568 | P135: =$G135/Premise!E$13/Premise!$E$5 -> 0.3846186167 | Q135: =$G135/Premise!F$13/Premise!$F$5 -> 0.2480964793
C136: Repair, maintenance | D136: 1 | E136: 500 | F136: =IF(ISERROR(E136*Premise!$L$9)=TRUE,0,E136*Premise!$L$9) -> 610.3115709 | G136: =Tab_TiOS_Oth[[#This Row],[Jedn. cena (€)]]/Tab_TiOS_Oth[[#This Row],[Doba odepisování]] -> 610.3115709 | H136: - | I136: - | J136: - | K136: - | L136: - | M136: - | N136: =$G136/Premise!C$13/Premise!$C$5 -> 0.002450418691 | O136: =$G136/Premise!D$13/Premise!$D$5 -> 0.0015883571 | P136: =$G136/Premise!E$13/Premise!$E$5 -> 0.004807732708 | Q136: =$G136/Premise!F$13/Premise!$F$5 -> 0.003101205992
C137: Heating | D137: 1 | E137: 2000 | F137: =IF(ISERROR(E137*Premise!$L$9)=TRUE,0,E137*Premise!$L$9) -> 2441.246284 | G137: =Tab_TiOS_Oth[[#This Row],[Jedn. cena (€)]]/Tab_TiOS_Oth[[#This Row],[Doba odepisování]] -> 2441.246284 | H137: - | I137: - | J137: - | K137: - | L137: - | M137: - | N137: =$G137/Premise!C$13/Premise!$C$5 -> 0.009801674763 | O137: =$G137/Premise!D$13/Premise!$D$5 -> 0.006353428399 | P137: =$G137/Premise!E$13/Premise!$E$5 -> 0.01923093083 | Q137: =$G137/Premise!F$13/Premise!$F$5 -> 0.01240482397
C138: Energy | D138: 1 | E138: 2000 | F138: =IF(ISERROR(E138*Premise!$L$9)=TRUE,0,E138*Premise!$L$9) -> 2441.246284 | G138: =Tab_TiOS_Oth[[#This Row],[Jedn. cena (€)]]/Tab_TiOS_Oth[[#This Row],[Doba odepisování]] -> 2441.246284 | H138: - | I138: - | J138: - | K138: - | L138: - | M138: - | N138: =$G138/Premise!C$13/Premise!$C$5 -> 0.009801674763 | O138: =$G138/Premise!D$13/Premise!$D$5 -> 0.006353428399 | P138: =$G138/Premise!E$13/Premise!$E$5 -> 0.01923093083 | Q138: =$G138/Premise!F$13/Premise!$F$5 -> 0.01240482397
C139: Water | D139: 1 | E139: 1000 | F139: =IF(ISERROR(E139*Premise!$L$9)=TRUE,0,E139*Premise!$L$9) -> 1220.623142 | G139: =Tab_TiOS_Oth[[#This Row],[Jedn. cena (€)]]/Tab_TiOS_Oth[[#This Row],[Doba odepisování]] -> 1220.623142 | H139: - | I139: - | J139: - | K139: - | L139: - | M139: - | N139: =$G139/Premise!C$13/Premise!$C$5 -> 0.004900837382 | O139: =$G139/Premise!D$13/Premise!$D$5 -> 0.003176714199 | P139: =$G139/Premise!E$13/Premise!$E$5 -> 0.009615465416 | Q139: =$G139/Premise!F$13/Premise!$F$5 -> 0.006202411983
C140: Gas | D140: 1 | E140: 1000 | F140: =IF(ISERROR(E140*Premise!$L$9)=TRUE,0,E140*Premise!$L$9) -> 1220.623142 | G140: =Tab_TiOS_Oth[[#This Row],[Jedn. cena (€)]]/Tab_TiOS_Oth[[#This Row],[Doba odepisování]] -> 1220.623142 | H140: - | I140: - | J140: - | K140: - | L140: - | M140: - | N140: =$G140/Premise!C$13/Premise!$C$5 -> 0.004900837382 | O140: =$G140/Premise!D$13/Premise!$D$5 -> 0.003176714199 | P140: =$G140/Premise!E$13/Premise!$E$5 -> 0.009615465416 | Q140: =$G140/Premise!F$13/Premise!$F$5 -> 0.006202411983
C141: Security | D141: 1 | E141: 1000 | F141: =IF(ISERROR(E141*Premise!$L$9)=TRUE,0,E141*Premise!$L$9) -> 1220.623142 | G141: =Tab_TiOS_Oth[[#This Row],[Jedn. cena (€)]]/Tab_TiOS_Oth[[#This Row],[Doba odepisování]] -> 1220.623142 | H141: - | I141: - | J141: - | K141: - | L141: - | M141: - | N141: =$G141/Premise!C$13/Premise!$C$5 -> 0.004900837382 | O141: =$G141/Premise!D$13/Premise!$D$5 -> 0.003176714199 | P141: =$G141/Premise!E$13/Premise!$E$5 -> 0.009615465416 | Q141: =$G141/Premise!F$13/Premise!$F$5 -> 0.006202411983
C142: Cleaning of the building | D142: 1 | E142: 500 | F142: =IF(ISERROR(E142*Premise!$L$9)=TRUE,0,E142*Premise!$L$9) -> 610.3115709 | G142: =Tab_TiOS_Oth[[#This Row],[Jedn. cena (€)]]/Tab_TiOS_Oth[[#This Row],[Doba odepisování]] -> 610.3115709 | H142: - | I142: - | J142: - | K142: - | L142: - | M142: - | N142: =$G142/Premise!C$13/Premise!$C$5 -> 0.002450418691 | O142: =$G142/Premise!D$13/Premise!$D$5 -> 0.0015883571 | P142: =$G142/Premise!E$13/Premise!$E$5 -> 0.004807732708 | Q142: =$G142/Premise!F$13/Premise!$F$5 -> 0.003101205992
C143: Insurance | D143: 1 | E143: 3000 | F143: =IF(ISERROR(E143*Premise!$L$9)=TRUE,0,E143*Premise!$L$9) -> 3661.869425 | G143: =Tab_TiOS_Oth[[#This Row],[Jedn. cena (€)]]/Tab_TiOS_Oth[[#This Row],[Doba odepisování]] -> 3661.869425 | H143: - | I143: - | J143: - | K143: - | L143: - | M143: - | N143: =$G143/Premise!C$13/Premise!$C$5 -> 0.01470251214 | O143: =$G143/Premise!D$13/Premise!$D$5 -> 0.009530142598 | P143: =$G143/Premise!E$13/Premise!$E$5 -> 0.02884639625 | Q143: =$G143/Premise!F$13/Premise!$F$5 -> 0.01860723595
C144: Property tax | D144: 1 | E144: 15000 | F144: =IF(ISERROR(E144*Premise!$L$9)=TRUE,0,E144*Premise!$L$9) -> 18309.34713 | G144: =Tab_TiOS_Oth[[#This Row],[Jedn. cena (€)]]/Tab_TiOS_Oth[[#This Row],[Doba odepisování]] -> 18309.34713 | H144: - | I144: - | J144: - | K144: - | L144: - | M144: - | N144: =$G144/Premise!C$13/Premise!$C$5 -> 0.07351256072 | O144: =$G144/Premise!D$13/Premise!$D$5 -> 0.04765071299 | P144: =$G144/Premise!E$13/Premise!$E$5 -> 0.1442319812 | Q144: =$G144/Premise!F$13/Premise!$F$5 -> 0.09303617975
C145: PŘÍPRAVA SÍTÍ | D145: 30 | E145: =SUM(E146:E149) -> 29000 | F145: =SUM(F146:F149) -> 35398.07111 | G145: 1179.935704 | H145: - | I145: - | J145: - | K145: - | L145: - | M145: - | N145: =SUM(N146:N149) -> 0.004737476136 | O145: =SUM(O146:O149) -> 0.003070823726 | P145: =SUM(P146:P149) -> 0.009294949902 | Q145: =SUM(Q146:Q149) -> 0.005995664917
C146: Electrical Supply | D146: 30 | E146: 14000 | F146: =IF(ISERROR(E146*Premise!$L$9)=TRUE,0,E146*Premise!$L$9) -> 17088.72399 | G146: =Tab_TiOS_Oth[[#This Row],[Jedn. cena (€)]]/Tab_TiOS_Oth[[#This Row],[Doba odepisování]] -> 569.6241328 | H146: - | I146: - | J146: - | K146: - | L146: - | M146: - | N146: =$G146/Premise!C$13/Premise!$C$5 -> 0.002287057445 | O146: =$G146/Premise!D$13/Premise!$D$5 -> 0.001482466626 | P146: =$G146/Premise!E$13/Premise!$E$5 -> 0.004487217194 | Q146: =$G146/Premise!F$13/Premise!$F$5 -> 0.002894458925
C147: Gas Supply | D147: 30 | E147: 10000 | F147: =IF(ISERROR(E147*Premise!$L$9)=TRUE,0,E147*Premise!$L$9) -> 12206.23142 | G147: =Tab_TiOS_Oth[[#This Row],[Jedn. cena (€)]]/Tab_TiOS_Oth[[#This Row],[Doba odepisování]] -> 406.8743806 | H147: - | I147: - | J147: - | K147: - | L147: - | M147: - | N147: =$G147/Premise!C$13/Premise!$C$5 -> 0.001633612461 | O147: =$G147/Premise!D$13/Premise!$D$5 -> 0.001058904733 | P147: =$G147/Premise!E$13/Premise!$E$5 -> 0.003205155139 | Q147: =$G147/Premise!F$13/Premise!$F$5 -> 0.002067470661
C148: Water Supply | D148: 30 | E148: 3000 | F148: =IF(ISERROR(E148*Premise!$L$9)=TRUE,0,E148*Premise!$L$9) -> 3661.869425 | G148: =Tab_TiOS_Oth[[#This Row],[Jedn. cena (€)]]/Tab_TiOS_Oth[[#This Row],[Doba odepisování]] -> 122.0623142 | H148: - | I148: - | J148: - | K148: - | L148: - | M148: - | N148: =$G148/Premise!C$13/Premise!$C$5 -> 0.0004900837382 | O148: =$G148/Premise!D$13/Premise!$D$5 -> 0.0003176714199 | P148: =$G148/Premise!E$13/Premise!$E$5 -> 0.0009615465416 | Q148: =$G148/Premise!F$13/Premise!$F$5 -> 0.0006202411983
C149: Floor Structural Survey | D149: 30 | E149: 2000 | F149: =IF(ISERROR(E149*Premise!$L$9)=TRUE,0,E149*Premise!$L$9) -> 2441.246284 | G149: =Tab_TiOS_Oth[[#This Row],[Jedn. cena (€)]]/Tab_TiOS_Oth[[#This Row],[Doba odepisování]] -> 81.37487612 | H149: - | I149: - | J149: - | K149: - | L149: - | M149: - | N149: =$G149/Premise!C$13/Premise!$C$5 -> 0.0003267224921 | O149: =$G149/Premise!D$13/Premise!$D$5 -> 0.0002117809466 | P149: =$G149/Premise!E$13/Premise!$E$5 -> 0.0006410310278 | Q149: =$G149/Premise!F$13/Premise!$F$5 -> 0.0004134941322
C150: NÁKLADY NA SLUŽBY | D150: 1 | E150: =SUM(E151:E158) -> 56000 | F150: =SUM(F151:F158) -> 68354.89594 | G150: 68354.89594 | H150: - | I150: - | J150: - | K150: - | L150: - | M150: - | N150: =SUM(N151:N158) -> 0.2744468934 | O150: =SUM(O151:O158) -> 0.1778959952 | P150: =SUM(P151:P158) -> 0.5384660633 | Q150: =SUM(Q151:Q158) -> 0.3473350711
C151: Telecommunication costs | D151: 1 | E151: 2000 | F151: =IF(ISERROR(E151*Premise!$L$9)=TRUE,0,E151*Premise!$L$9) -> 2441.246284 | G151: =Tab_TiOS_Oth[[#This Row],[Jedn. cena (€)]]/Tab_TiOS_Oth[[#This Row],[Doba odepisování]] -> 2441.246284 | H151: - | I151: - | J151: - | K151: - | L151: - | M151: - | N151: =$G151/Premise!C$13/Premise!$C$5 -> 0.009801674763 | O151: =$G151/Premise!D$13/Premise!$D$5 -> 0.006353428399 | P151: =$G151/Premise!E$13/Premise!$E$5 -> 0.01923093083 | Q151: =$G151/Premise!F$13/Premise!$F$5 -> 0.01240482397
C152: Financial costs | D152: 1 | E152: 5000 | F152: =IF(ISERROR(E152*Premise!$L$9)=TRUE,0,E152*Premise!$L$9) -> 6103.115709 | G152: =Tab_TiOS_Oth[[#This Row],[Jedn. cena (€)]]/Tab_TiOS_Oth[[#This Row],[Doba odepisování]] -> 6103.115709 | H152: - | I152: - | J152: - | K152: - | L152: - | M152: - | N152: =$G152/Premise!C$13/Premise!$C$5 -> 0.02450418691 | O152: =$G152/Premise!D$13/Premise!$D$5 -> 0.015883571 | P152: =$G152/Premise!E$13/Premise!$E$5 -> 0.04807732708 | Q152: =$G152/Premise!F$13/Premise!$F$5 -> 0.03101205992
C153: Accounting, tax, audit | D153: 1 | E153: 3000 | F153: =IF(ISERROR(E153*Premise!$L$9)=TRUE,0,E153*Premise!$L$9) -> 3661.869425 | G153: =Tab_TiOS_Oth[[#This Row],[Jedn. cena (€)]]/Tab_TiOS_Oth[[#This Row],[Doba odepisování]] -> 3661.869425 | H153: - | I153: - | J153: - | K153: - | L153: - | M153: - | N153: =$G153/Premise!C$13/Premise!$C$5 -> 0.01470251214 | O153: =$G153/Premise!D$13/Premise!$D$5 -> 0.009530142598 | P153: =$G153/Premise!E$13/Premise!$E$5 -> 0.02884639625 | Q153: =$G153/Premise!F$13/Premise!$F$5 -> 0.01860723595
C154: Compliance regulatory | D154: 1 | E154: 1000 | F154: =IF(ISERROR(E154*Premise!$L$9)=TRUE,0,E154*Premise!$L$9) -> 1220.623142 | G154: =Tab_TiOS_Oth[[#This Row],[Jedn. cena (€)]]/Tab_TiOS_Oth[[#This Row],[Doba odepisování]] -> 1220.623142 | H154: - | I154: - | J154: - | K154: - | L154: - | M154: - | N154: =$G154/Premise!C$13/Premise!$C$5 -> 0.004900837382 | O154: =$G154/Premise!D$13/Premise!$D$5 -> 0.003176714199 | P154: =$G154/Premise!E$13/Premise!$E$5 -> 0.009615465416 | Q154: =$G154/Premise!F$13/Premise!$F$5 -> 0.006202411983
C155: Legal services, patent fees, etc. | D155: 1 | E155: 20000 | F155: =IF(ISERROR(E155*Premise!$L$9)=TRUE,0,E155*Premise!$L$9) -> 24412.46284 | G155: =Tab_TiOS_Oth[[#This Row],[Jedn. cena (€)]]/Tab_TiOS_Oth[[#This Row],[Doba odepisování]] -> 24412.46284 | H155: - | I155: - | J155: - | K155: - | L155: - | M155: - | N155: =$G155/Premise!C$13/Premise!$C$5 -> 0.09801674763 | O155: =$G155/Premise!D$13/Premise!$D$5 -> 0.06353428399 | P155: =$G155/Premise!E$13/Premise!$E$5 -> 0.1923093083 | Q155: =$G155/Premise!F$13/Premise!$F$5 -> 0.1240482397
C156: Marketing and distribution costs | D156: 1 | E156: 5000 | F156: =IF(ISERROR(E156*Premise!$L$9)=TRUE,0,E156*Premise!$L$9) -> 6103.115709 | G156: =Tab_TiOS_Oth[[#This Row],[Jedn. cena (€)]]/Tab_TiOS_Oth[[#This Row],[Doba odepisování]] -> 6103.115709 | H156: - | I156: - | J156: - | K156: - | L156: - | M156: - | N156: =$G156/Premise!C$13/Premise!$C$5 -> 0.02450418691 | O156: =$G156/Premise!D$13/Premise!$D$5 -> 0.015883571 | P156: =$G156/Premise!E$13/Premise!$E$5 -> 0.04807732708 | Q156: =$G156/Premise!F$13/Premise!$F$5 -> 0.03101205992
C157: Travel costs | D157: 1 | E157: 15000 | F157: =IF(ISERROR(E157*Premise!$L$9)=TRUE,0,E157*Premise!$L$9) -> 18309.34713 | G157: =Tab_TiOS_Oth[[#This Row],[Jedn. cena (€)]]/Tab_TiOS_Oth[[#This Row],[Doba odepisování]] -> 18309.34713 | H157: - | I157: - | J157: - | K157: - | L157: - | M157: - | N157: =$G157/Premise!C$13/Premise!$C$5 -> 0.07351256072 | O157: =$G157/Premise!D$13/Premise!$D$5 -> 0.04765071299 | P157: =$G157/Premise!E$13/Premise!$E$5 -> 0.1442319812 | Q157: =$G157/Premise!F$13/Premise!$F$5 -> 0.09303617975
C158: Laboratory tests | D158: 1 | E158: 5000 | F158: =IF(ISERROR(E158*Premise!$L$9)=TRUE,0,E158*Premise!$L$9) -> 6103.115709 | G158: =Tab_TiOS_Oth[[#This Row],[Jedn. cena (€)]]/Tab_TiOS_Oth[[#This Row],[Doba odepisování]] -> 6103.115709 | H158: - | I158: - | J158: - | K158: - | L158: - | M158: - | N158: =$G158/Premise!C$13/Premise!$C$5 -> 0.02450418691 | O158: =$G158/Premise!D$13/Premise!$D$5 -> 0.015883571 | P158: =$G158/Premise!E$13/Premise!$E$5 -> 0.04807732708 | Q158: =$G158/Premise!F$13/Premise!$F$5 -> 0.03101205992
C159: Celkem ostatní náklady | G159: =SUBTOTAL(109,G126,G134,G145,G150) -> 151316.5821 | N159: =SUBTOTAL(109,N126,N134,N145,N150) -> 0.6075404741 | O159: =SUBTOTAL(109,O126,O134,O145,O150) -> 0.3938066702 | P159: =SUBTOTAL(109,P126,P134,P145,P150) -> 1.191997196 | Q159: =SUBTOTAL(109,Q126,Q134,Q145,Q150) -> 0.7688923388
C160: HCT OT | N160: =N159*Premise!C5 -> 36.3916744 | O160: =O159*Premise!D5 -> 36.3916744 | P160: =P159*Premise!E5 -> 36.3916744 | Q160: =Q159*Premise!F5 -> 36.3916744
C162: Položka | D162: Sloupec1 | E162: Sloupec2 | F162: Sloupec3 | G162: Sloupec4 | H162: Sloupec5 | I162: Sloupec6 | J162: Sloupec7 | K162: Sloupec73 | L162: Sloupec72 | M162: Sloupec8 | N162: N_TiO2 (TiOS) | O162: N_ZrO2 | P162: N_ZnO | Q162: N_LiFePO4
B163: Celkem | C163: CELKOVÉ NÁKLADY | D163: - | E163: - | F163: - | G163: - | H163: - | I163: - | J163: - | K163: - | L163: - | M163: - | N163: =N38+N44+N99+N110+N122+N159 -> 24.71387159 | O163: =O38+O44+O99+O110+O122+O159 -> 13.99658049 | P163: =P38+P44+P99+P110+P122+P159 -> 18.14141291 | Q163: =Q38+Q44+Q99+Q110+Q122+Q159 -> 17.4052111
C164: VÝNOSY | D164: - | E164: - | F164: - | G164: - | H164: - | I164: - | J164: - | K164: - | L164: - | M164: - | N164: =Premise!C14 -> 40 | O164: =Premise!D14 -> 43 | P164: =Premise!E14 -> 43 | Q164: =Premise!F14 -> 30
C165: ZISK | D165: - | E165: - | F165: - | G165: - | H165: - | I165: - | J165: - | K165: - | L165: - | M165: - | N165: =N164-N163 -> 15.28612841 | O165: =O164-O163 -> 29.00341951 | P165: =P164-P163 -> 24.85858709 | Q165: =Q164-Q163 -> 12.5947889
C166: PÚ 2° | D166: - | E166: - | F166: - | G166: - | H166: - | I166: - | J166: - | K166: - | L166: - | M166: - | N166: =N165+N99 -> 16.47533049 | O166: =O165+O99 -> 29.77425821 | P166: =P165+P99 -> 27.19180702 | Q166: =Q165+Q99 -> 14.09982174
C168: Položka | N168: TiO2 | O168: ZrO2 | P168: ZnO | Q168: LiFePO4
C169: CHEMIKÁLIE | N169: =Tab_TiOS_Ch[[#Totals],[N_TiO2 (TiOS)]] -> 20.55141487 | O169: =Tab_TiOS_Ch[[#Totals],[N_ZrO2]] -> 11.44849916 | P169: =Tab_TiOS_Ch[[#Totals],[N_ZnO]] -> 10.46536489 | Q169: =Tab_TiOS_Ch[[#Totals],[N_LiFePO4]] -> 12.45381144
C170: OSTATNÍ VARIABILNÍ NÁKLADY | N170: =Tab_TiOS_En[[#Totals],[N_TiO2 (TiOS)]] -> 1.460942777 | O170: =Tab_TiOS_En[[#Totals],[N_ZrO2]] -> 0.7038428468 | P170: =Tab_TiOS_En[[#Totals],[N_ZnO]] -> 2.375665277 | Q170: =Tab_TiOS_En[[#Totals],[N_LiFePO4]] -> 1.53241202
C171: ZAŘÍZENÍ | N171: =Tab_TiOS_Eq[[#Totals],[N_TiO2 (TiOS)]] -> 1.189202076 | O171: =Tab_TiOS_Eq[[#Totals],[N_ZrO2]] -> 0.7708387012 | P171: =Tab_TiOS_Eq[[#Totals],[N_ZnO]] -> 2.333219927 | Q171: =Tab_TiOS_Eq[[#Totals],[N_LiFePO4]] -> 1.505032841
C172: FILTRACE | N172: =Tab_TiOS_Ft[[#Totals],[N_TiO2 (TiOS)]] -> 0 | O172: =Tab_TiOS_Ft[[#Totals],[N_ZrO2]] -> 0.09312188237 | P172: =Tab_TiOS_Ft[[#Totals],[N_ZnO]] -> 0 | Q172: =Tab_TiOS_Ft[[#Totals],[N_LiFePO4]] -> 0
C173: ZAMĚSTNANCI | N173: =Tab_TiOS_Per[[#Totals],[N_TiO2 (TiOS)]] -> 0.9047713902 | O173: =Tab_TiOS_Per[[#Totals],[N_ZrO2]] -> 0.586471229 | P173: =Tab_TiOS_Per[[#Totals],[N_ZnO]] -> 1.775165616 | Q173: =Tab_TiOS_Per[[#Totals],[N_LiFePO4]] -> 1.145062461
C174: OSTATNÍ NÁKLADY | N174: =Tab_TiOS_Oth[[#Totals],[N_TiO2 (TiOS)]] -> 0.6075404741 | O174: =Tab_TiOS_Oth[[#Totals],[N_ZrO2]] -> 0.3938066702 | P174: =Tab_TiOS_Oth[[#Totals],[N_ZnO]] -> 1.191997196 | Q174: =Tab_TiOS_Oth[[#Totals],[N_LiFePO4]] -> 0.7688923388
N175: =SUM(N169:N174) -> 24.71387159 | O175: =SUM(O169:O174) -> 13.99658049 | P175: 18.14141291 | Q175: 17.4052111
C177: VARIABILNÍ NÁKLADY | N177: =Tab_TiOS_Ch[[#Totals],[N_TiO2 (TiOS)]]+Tab_TiOS_En[[#Totals],[N_TiO2 (TiOS)]] -> 22.01235765 | O177: =Tab_TiOS_Ch[[#Totals],[N_ZrO2]]+Tab_TiOS_En[[#Totals],[N_ZrO2]] -> 12.152342 | P177: =Tab_TiOS_Ch[[#Totals],[N_ZnO]]+Tab_TiOS_En[[#Totals],[N_ZnO]] -> 12.84103017 | Q177: =Tab_TiOS_Ch[[#Totals],[N_LiFePO4]]+Tab_TiOS_En[[#Totals],[N_LiFePO4]] -> 13.98622346
C178: FIXNÍ NÁKLADY | N178: =N163-N177 -> 2.701513941 | O178: =O163-O177 -> 1.844238483 | P178: 5.30038274 | Q178: 3.418987641

Sheet CB_DATA_ (hidden)
A1: Crystal Ball Data
P2: =_xll.CB.RecalcCounterFN() -> 
A3: Workbook Variables | B3: Last Var Column | C3: 0
A4: Name:
A5: Value:
A7: Worksheet Data | B7: Last Data Column Used
B8: 8
A10: Sheet Ref
A11: =CB_DATA_!#REF! ->  | B11: =Simulace!#REF! ->  | C11: =ČSH_US!#REF! ->  | D11: =ČSH_UK!#REF! ->  | E11: =ČSH_ČR!#REF! ->  | F11: =ČSH_CH!#REF! ->  | G11: =Vstupy!#REF! ->  | H11: =#REF! -> 
A13: Sheet Guid
A14: cecfe600-2997-456d-ae17-fe27a875f787 | B14: 37529c8f-b585-448a-90de-4c561db994cb | C14: bbd25066-7741-4e6d-8df3-c43ef8f5bc36 | D14: 8f4b34f4-dbb6-4642-8f4d-1f8d4b667b50 | E14: e8b95861-8652-4a9d-a330-1345abf905b3 | F14: b8a42577-0637-445a-8952-d2509df3dbbc | G14: 18ed29c7-6c96-4daa-9d38-0117df0e50ef | H14: 37529c8f-b585-448a-90de-4c561db994cb
A16: Deleted sheet count
H17: 1
A19: Last row used
A20: 31 | B20: 31 | C20: 34 | D20: 34 | E20: 34 | F20: 34 | G20: 31 | H20: 31
A25: Data blocks
A26: CB_Block_0 | B26: CB_Block_7.0.0.0:1 | C26: CB_Block_7.0.0.0:2 | D26: CB_Block_7.0.0.0:2 | E26: CB_Block_7.0.0.0:2 | F26: CB_Block_7.0.0.0:2 | G26: CB_Block_7.0.0.0:1 | H26: CB_Block_7.0.0.0:1
A27: 㜸〱敤㕣㕢㙣ㅣ㔷ㄹ摥㌳摥㔹敦慣敤搸㡤搳㑢㑡㘹㕤㑡㈹慤㠳ㅢ愷つ愵㐰〸扥㌴㤷攲挴㙥散愴㈰㐰㥢昱敥ㄹ㝢㥡㥤ㄹ㜷㘶搶㠹㑢愵㔶愵摣〴〵㠹㥢㈸㤴㡢㉡㠴挴ぢ㤷ㄷ㘸愱㐲㐲㈰㠱㔰㤱㄰㠲〷㈴ㅥち㐲昰〰㐲㤱㜸攱〱〹扥敦捣捣敥散慥㜷散㙥㕢㜰㤱㑦扡扦捦㥣摢㥣㜳晥敢昹晦㌳捤㠹㕣㉥昷㙦㈴晥㘵捡㌳㜳摤攲㐶㄰㑡㘷㘲挶慢搵㘴㈵戴㍤㌷㤸㤸昲㝤㜳㘳捥づ挲㍥㌴㈸㤴㙤搴〷㝡㌹戰ㅦ㤲挵昲扡昴〳㌴搲㜳戹㘲搱搰㔰捦㐱昸ㅢ㐹ㅥっ昶ㅡ捣〳㉣捤㑣捦㉦㍦㠰㔱ㄷ㐳捦㤷〷挶捥㐵㝤㡦㑣㑥㑥㑣㑥摣㜱攷攴摤ㄳ〷て㡣捤搴㙢㘱摤㤷㐷㕣㔹て㝤戳㜶㘰㙣愱扥㕣戳㉢敦㤲ㅢ㑢摥〵改ㅥ㤱换〷敦㔸㌶敦㝣换攴㥤㠷て㕢㜷摦晤㤶㐱扣㍡㜷㝡㘶㝡挱㤷㔶昰㌲㡤愹㜳捡㜷捥捡㡡捤戵㐹改摢敥捡挴捣㌴晥㑢捤ㅦ㑦㜷㑤㉣慥㑡ㄹ昲搵搲㤷㙥㐵〶〶㍡づ㌸㔳㐱㔰㜷搶戸㜹㠶㜳っ㑢慤㤸㐱愸㍢㌳戲㔶㌳㥣㘴搴愲㌳㡦扤慢㤹ㅢ㠳捥愲㜴〳㍢戴搷敤㜰愳攰㉣㘱愰敡㤰㜳㌶㤰㘷㑣㜷㐵㥥㌶ㅤ愹㍢挷敢㜶㌵ㅦ愵㕣摦㉤挹㄰改㠹愹攵㑦㑣〵捥捣慡改慢ㄹ〵摣㤸㡣戶挷晣㑡㙢摢㥢扡㡦换愹慢㌷㜰捣㥢扢户㐳捤㌹搳㙦戴ㅣ敦摥㌲㕥㝣敢っ㙥敦摥㍥戵㐷慤㝤㙥敤摥㐷㙤㘵㙢㙢㌱㄰搳户摡㔱㉣挶㈸㄰昴ㄳㄴ〹㠸㐰愳㐴㌰㐰㌰〸㈰昲晦〰㤷愴㍢戲㑡㉢㥢㕡㜹㔹㉢㔷戴㜲㔵㉢㑢慤㙣㘹攵ㄵ慤扣慡㤵㙤慤晣㠰㔶扥㠰㌶㐹㉡昶昷㙢㜱晡挹㜳晢㔷㝥㜴捤㘳㈷扥昲昵攷㍥昰敢㕢㈷㝦㌷戸〷㡤敥㡢㈷㌵敢㥢ㄷ㐱㙡㑤㉡㍥㌴㜱㤰晦戶收ち㌰㠵㜵搸扡换㥡㥣慣ㅥ㍥㘸摥㘱敡㕣㔶〶昲㕢〸㘵〴㙤〷慤晢㙤户敡㕤㔴戸扢㙥摡っ㘴㜳攳挶攳扡㘹慦敥㔶㠳搷㙣㕥戹ㄸ㥡愱扣戶扤慥㌹㐸㐷户㐵戰㤵っ搴晢慥㙦敦㜶捥慣搵攵搴㈵㍢慡㝥㙤㕢戵戳攰㝢换摤㙢㡦昹昲挱㐶㙤挷㡣愶㈰搴搶搵搸ㅤ慢㡣慡愲㜹㡤捤慣㝡㠱㜴搵昴挶㥤〵扢㜲㐱晡㡢㤲㈲㔱㔶搵㔲慦㘴㔵捣昵攳昳㉥ㄶち㙥慤扥㉥㕤㙡摤㜳㈹〴㌳换㉡收扢㈶晤㜰㘳挹㕣慥挹慢㕡㥡㐴敦㐴挵晥㤶攲㘳㕥愵ㅥ捣㜸㙥攸㝢戵搶㥡愹敡扡〹㐹㔳㍤攵㔵㘵㍥㥦㔳㐲〱〲户慦㑦㠸摣㙤摤㜹㐱㈱㈲㠵㘲㌲昲㌵慤㘴㌷㜱〶慢挳㉡㙡㤲㌴愹扤㝥㡢挱㌸㕦㈵㘳㌲㌸㌰戵㈶敡て扥昴㡤㕢っ摢挰摣㉢摢㔸搳㐶攳搵摦戳㉥摤昰㠴改㔶㙢搲捦搴㝥㠲㌳㌲㠶〱昴换㄰〸㕤㜷㡦慡㑥㕣ㄲㅢ晡㐵扢ㅡ慥ㄶ㔶愵扤戲ㅡ愲っㅡ戲㔸攴搶㜶㈴攳ちㄴㄹ㝢〹㐶〱㑡愵㕣㘱ㅦㅢㄵ㑡㐸㌹㥤搲㈹㠳㤷㕢〴㌹晢戵昰昲愰㜵捣慥㠵㌲ㄲ捡挳ㄶ㌰ㄲ㘹㌵㠵扥㈱㤲愸㙦㔶㈲㠵戱捦㥡〱㤵㥡戶ㅢ㙥㌴昹戶㠳㑢㈲㈲摡㤵〵㍢㑥ㄶ㔰ㄴ戴捡㠳っ㕥〳搱戴㐹㠳散挶㈹㈲㈲ㅢ㘴㘸㜶㡣摣㑡㘴㙣㥦㈱㈳搰㍥㑤㠴㙣㝤戰扢㡣㈰戱㜷ㄲ㈹㍢㜵攵挷㕤㘹戶㤹㉤ㅦ㐹戳㉢戱㜱挶㔵〴㔷ㄳ㕣㐳戰ㅦ㐰晣ㄹㄲ㡥㔲づ昹搶㘴扣〶捦挶㜵〴慦〵㠰㝣㌲㈸㜳㘲㔱㐵ㅢ㙡㍢㜶㈴摢つ挱㑥㔶㐶㜱㈴㡡㘸ㄹ㌷散捣㈱㐷㈱㍡戶㍡㜷㠶慥捤㉢ㅤ晢㠶敥戴㤹㕥づ㈹㌲愳㘹㝡慤㕢㌴㑤㙦〴㥢昶愸户㙥㐰㔷㘳㡣攰㐶㠰㤲昱㍡㐲㈸ㄷㅡ扣摢戳攸㘹㔲扥㉡捣愲挸ㄸ敡㔱挱挷㠴捣㈳㐰㠶㤰敢㌸扥散摡搰㌴〷挷慤㔷扤つ㝤愰㍢㝦挷㐸㙦搳㥢扢㝡㠷晥愲ㄷ㘹㐵摦〴昶ㄲ扦敦慡㘳㙥㐶戵昱〶㠲㕢〰摡㜴っ㑦摦㉦搶㔳愰捣㘲㈷㠵戹扤昴扡㈸㉢㜷㘹㘳㑤㉡つ㌴㘸㉤㤹晥㡡っ攱挱㌸㌹ぢ㕢搸昳㝤㔹挳愱戶慡ち㜸㝥戹扡戵㌰㌸收㝢づ换㜷㙤攴攰㔵愱ㄸ昲㜹慤㉦搷㘶㈳㘷搸㥡㈹㥦㔳㡡㜲愸㠳敦攸㉥㈴㔲㥤㕡挹㡢晤戲捦㤷扢㤲愴〷㐹㜲㉢戶搵戸つ〰㔲㐲晣戶慢㐴㌹挰㘶㙦㔲捤㕡㉤㔶㝡昸㌲㑥㈷㙤㍥挴づ㌹㌲㄰㌹㙣愷攱㍦〸㠶㥣㐵摢㘹〸㡢〱㘷㐱晡ㄵ昸ㄶ散㥡㉣㐵㙥㔹㡡㥡㕤㔹昱㉡㤱ㄵ㝤㝤ㅤ攷改っ晦㥡愲㤳㌶㈹㤱挹敤㤹㤵ㄹ㘷昱㈶㔱搱つ㐹愱㤲攱ㅡ㙡㐸㈰㔲ㅥ摢敥㡡㤸ㅥ㐴捣敤搸㌸攳㈰挱㈴挱㈱〰晤㤷㤰㌴摢摤㜸㠶挳晡搷改搲㉥㤷㜳㐵愲㐱戹〸㥦敦㉡慣づ昳㌵㙦㈶戸ぢ愰捤晣愱〳㌲㠳㄰ㄵ捡㔳㠴愸挲ㄸ搶㌹㕢㕥㈴つ散戱㄰㔸㥡愹〷愱攷㌰戲㌴㘴捤㝡愷扤㜰搶づ搶㄰㠹ㅡ戵攲捣晤慢搲〵㜵昹戰㝤摡捡扣戵㌵㔹㌵慣㐵慦づ搱㜶㜲㜶㈷ㅣ捣戱ㅤ戰㈵搵搹㕣ㄳ㐸扤㥤㡦㌱㠴挰㑥㉢㝦㉢扤戱摢昲㝥昳搰㌷摣摣搱㈵㍢慣挹〱㉢㘲㍡收㡢ㄶ㜶ㄱ㤱㠳㙡扦戵戴敡㑢㌹㍢㘴ㅤ昷敤㙡捤㜶㈵㤱〱ㅢ㤳挱扡㌹戹㠲㈸挱㠲挷ㄸ愰攷づ㔹㑢扥改〶㙢㈶〳㡡ㅢ㝢㕢㥥㔴㔸㐴户愶㙤㌷挰㙢ㄴㄶ㤹ㅦ戶ㄶ㔷扤㡢㠸搸搶ㅤ昷戸戹ㄶ散〸慣㤰攸愳愴㔰㈳㌴愱㘹愲愸ㄵ㝢挵てて攴戹ㅣ㜹㉦㑦愰㜰㤵搳改㌳捦搰摥戴敢攳ㄸつ敤㜴捥㘹㄰搱愳㐶㘱㕦愶ㄴ㈶愷ㅡ㜷戳捦㕢〱敥㍤㝥昶㘴㌳㌲昷㤲㘲搶㍡扤晣ㄹ㌲㕥㤱㐵㈳㄰㐲ㅦ摤㥥㠸㔴㔸㐶捡〱〷〲攳㝣㙡㈷扦㤲愵摡㤰晡昶㌴戳挷㄰㐹ㅡ戴收捣㘵㔹㐳㍣摡㌱挳㍤搱〳捤㔸挷慣〵㜱摤㡣攷㌸㈶㐹㡢㘴戹㔸㌱㐹挱㔳昵搰㍢㘵扢㠶〵愰攸㉦㉥㌲㉦愱挸扣愴㡡〶慤㌳っつ慡㍣挷昲㔶㑣摦づ㔷ㅤ扢㔲攴〳挳㜷㍢㠲㈶挱攴㤴扣㐹㑡㘴挶㔸㥢㌵㝦ㄶ㈶㕢㌰〱㜴㑦㐰㡥㜲敢㠸㝥㔰慥㈶ち昸㈷㝡㜴㉣㐱挰㈸㑦愹昱㜶㡣愶慢摢ㄱ㄰㌹㉡㕤㑥敥㘰㕣㝥〴㈵㤱㄰㈲搶㌳㐸〴㕥挱㤴㤰愷㡢扢㘰㥤㜵敤㄰搸㈳挶㡥搹攱㙣〰㤴〳㈰慢㡥户搷㉡慣愶㍡㡤㌷戴挲つ㥤㔵㉤㙡攲晡捥晡戴摥㜸晤㈶搵㤱㐶㐹㈹㤲慤ㅡ㈹捤戲挹ㅣ㜷㤲慡ㄱ㑡㜱㈷摡㐶㘴戹㑤㥢晢㑥㈹昲ㄲㄴ㤳愲㤹㥣昱づ㐵㈸〸昴挶㍡㡡㍥晢㙣昲㐸㐵㙣㘸〳㤴愸愷愲戲愱㌸㈴㜸ㄲ搷㑥慡戲ㄴ㍦㠱扦昷挴搹昹㝡搸㔲㘳㕥ㅡ㡤㙢愶㙡戵㜹ㄷ㔶㐲挵昴慢㍢㠴愵戱戶㐸挳㈸敥散㔵晢㐷摢㥢㘲挴㤸つㄹㄶ挹昰〳㠳つ挱㕣愹㠸㉡慤戳㈱㙥㜵愳戸挸愷㔳搲㜴ㄵ〶ㄶ挳敡慣㕣㔷㘶㔸搳㤲ㅦ㔵ㅤㅡ愷㐵㈵㐷つ㙢㙡㌹㠰㑡て㈹挷攳㥣㘲㜰挳㍡㐳户ㄴ㉥㌱㐰散挶戹㠵㑡㠸搰㙥㘳〰㥥っ㜶づ㜶戰㈳㔱攸㠴搶ㄹ㈵㘸㈱㠳㜰㕢ㄷ㐱摥改ㄱ愳㄰愴㤶㑡㝦㍦㉡扥昸㈴搳㌷㡦收㤲㑣捣㐴っ㜷㘵㔸て㐰㙥㍡㌲㐹㉥ㅡ㑤〲收㤱㘴㔳㐲㙢㌰㈹愳㠹㌱㐴㤳捦て㜱㡢㠷戱慣㘱戲㑤つ昷摣㐲ㅢ摡戴戶戱挷㍡改㔶㙡昵慡㔴慡㌸㤱搵㑡㈳敦〸㝣愹㉢㠰ㄱ㌷㘵散㑢扣㈹㈷㜱㤴攲㤲㠹愴摥敤㙥攳㈸扡㉢㈱㠷㌱㈲搵挷〰㘴㠶㕢㑥〵挴㍡敥㈹搰㍥摣摢扣挰愰㉥捦㐱愴㜵ㄴ㔱㤶捤攱㍥㕥㈳㡡慣戸㉤搵㙣捥㥢昳㘸戳愷㡡㑥搸㔱搱㡥挰ㄱ搶ㄹ〹扣㐲〱挶㐸㡦摣挱㐱㜲㤷攳攸敥攵㐷搴㘳敥㌲㔰愱㌰㈰ㄸ攳攵㈹㈸㠷㕤〵㈳搱攰搶㥡㔶户㘰昴㤷㤶户㌱〵㈰ㄸ〶愶㐱㡢㤶㤱㠱㌳㠳晣搶〶捥つ㘸㤵ㄱ㈱㑤〷㔳ㄹ愳ㅣ㠵挳ㅥ㐸〳㌷昱㈰扤攴㐱〹㠵晢搴挵戰攴㙥攲戸㠳㈳㤰攷㕦搵㔶戸㘰㠶戸晥攲敥㙦㉢㥥慡㔶㘹敥挲㍦户㈳戰㡡慢ㅢ㤱㌹扡慦敤㔲㤶㕡ㄳ敤扢㥢摡㉡攲换㠲㠷㘶㈷㑥㤸㘱㘵㜵㌱摣㠸㉥㙥昵㑡ㄲ晡㜳昰㐷㙣晡㜶摡捣㜹㤷ㄷ㔱搷戹昷愵ぢ慥㜷搱㔵昳搲〳摥晡〳㠵攰ち㘵㍦㈷㔹捡晤ㅢ晦㔴搲㜲晡て㌱攲㜶愶捤〱㥡づㄲ㡥愳㔲㈴つ挶㤰捦愰ㄳ搸敥㡤㕢〳愴㤳㝤㙤㜴愲〴挱㉥愱戸㉢㉦ㅢ愱㠸ㅦ〰慤㈴㤶攸㐸㡥㍤晦〶㔸㕦㍣㡢ㄲ㈲ㅣ捦戱ㄸ搱㙦㐴㉥〳㜵㑡㤰挷㔷㍣㜸㈱攴晦〷㑢〹㌷㙦捡㑥晦〵㘶ㄶ捦戴愳攸㝡愲攸晢ㅤ㈸ㄲ扣〶愲昸昷㕥㘴㤲愴㌳㍣晢愲〲攱㕣搳敥〱昴ㄵ扦昰晢㍦㍣㠰捥挵挴愱㙣㌴㠴摡㙥挶㜳挳㐴攸敢㌰ㄱㄸ扣㔷㈶挲㈹㘴〴愳昸㤱㠹㄰晢㐰收㔱戰戵㠹挰搸㕥㠶㈱㤸ち戵愶摣ㅡ㍣㠱㕤攵搰㍦㜶〲ㄷ㙦㘵㠰㜸㍥㤴㔶㌰〳㡦搴搵㥤挵ぢ愶㙦㍡晢㔵昹㜱㕦㐲㤹昹㑢戸挹慤扡戰挷戵㥢搶愸㑥㥢昸㉡ㄲ㉦晢慥㍦㘵㝢昷搷㠱愹㈸㐵敥㝢㔱ㄴ㠵㤷攰㈹ㄱ㍣㌷攴㍥戰敦㕢挷晦昰搰攳㐷㜹㕢㉤愶㔵晤㌶攴㝢〹搹搳㥥㐰㔰㌷㜵㔱攴㑡㝥㤸㜳ち㥦㈸搹㙢㌵㌹㙤晡捡ちちっ㈷挹㐶㠴㤷㈲捣㠸昸㜶㠲㠹㠹㝢て㤱㠹㌹搱收敥㔴ㅦ㌶㈹ㄷ攱㐴㙡攲捡愷㤷㠴つ㐵㔷㐵搶愳戵愹㝦〷慡攸㐵㑥愴搵㑡攴愹㤳㐹㠸㙦户敢扡挳搴㜵搱㐱㠶㘱晦㐴㑡㈱晥㐰ち㐹ㅦ㘴㜸㈱㐰㐹愹㌳挸攸户〳㘴㐴搶摡㐳扣昴〷散ち〱搹戸昴搷攳㐷㉣搸㐵㘰㌱昱挵昷㝡愲愵㉤㥡愸㈶㠶㙡㤵㑤戳㠸㡣㍡扣戰㘰㌲㈹㕤㐲㈶㐹晡㈱攴戶敤㡥攲㑢㠶㥣㈸昰ㄶ㌱戶敥搰搷㔶㜲敥㜱敢戸昹〱㍤㔳㔰ち挳摤换㘲ㅣ㐸㔵㡣㉥㙡㕡㡡㡡〸㠷愳㙣愳搳㐰㕣〵㥤攵敥挷愹ㄴ挱㍦㝥㈹挴晡昱收搰㔷戶搷㔰挷戹晤㔸㈰㝦戰扦慥捦㘰㙣扣㤵ㅣ〳〹扢慤㔶挵攸㝡昸㔹㜴攱愲㜳挲㘸㘶搵戳㌸㡣㍦〹㘷昵㘹ㅤ晡㥦搱㙢挵㔹攷搸㥢㘱散ㄶ晤晦㙥ㄴ㙣愹晦〵㘳㙦ち㤱敦㠹㌳㝣搰ㄹ㍦搹㌲㘴挳ㅤ㠱㘷ㅢ挱ㅢ㜵㌰㌶㔴㤶㈱敦㈸户㠸㡦㔷愳㙡㈵挱攱昷捡户㕦㡤㘸昴愵㙤㍢搰㔵〰㌲㌶愴㝦〳㈲愸㙢晦㔶戹㤵㥣㙥ぢ敦㐵挷㝤愷散㡡敦〵㥥ㄵ㡥㉤㈲攸㍢挶㙦捦㉣搸㍣㔳攲敢敤㐲敤㈶散挴攰晢搱攷昴㍣〴昶㘹ㄹ扥㕣戱㐸㐶ㄶ戶ㄷ挹攰㜷㐸㈳愹昰ㄲ戵㐳㜰㠵㜵㕦摤慣攱搳搵㜹昸㍡㐳ㄶ敤〸㘵ㄷ㜹㥣摢㙦㘸㜰敢㜰㐷敢㕤昰〷挹摡〴㠲㘳㙡〹敦㝤㍦昷戵㝤て㕡摢挶㙢ぢ搸戲㌷㥦㕢㐹㝦ㅡ㌸摤摥㕢㕡㐹㠶敦攴ㄷ挹㈵愳㑣㠸㑢晢㐷昱㜷晢づ㕡㡥㌶ち㍡㡦㍦攸愶㈳㙣扣〶昷搹㌶愲摦攷搱㔵㑣ㄱ攰㘷㤸㜱㠶て㠲㕥㍥戲愲昸ち㤶㐵〶㐰㍥㔷愸〰㜴愷敡愷㌶愳敡㤱㝢搹ㄳ㐹昰㡣㐱㜲㉣㠹㉦愱㈱户㉢㕡㌶㔸㠲换ㄶ敡㉣㠱扣㤱昴㐰㍥㈷㜸㤶㔰ㄳ昹〲㍡㌴㈶㘲愳戴晢㐴㍥扦搹㐴〴慤〰戵搰昴昸㈳㠹ㄶ㌱㙡愸㌶ㅣ〲㤷挰〳ㄸ㐹㤴挹㌰攵㈳㠵㑥㈱㡡㌱㍣㑢ㄴ㈱晤㉡晥晢挲搱㕦㍥捦昴户愳㐲㐹㐴㔴戵慥㠲ㄲ㔱慤攲㔳改㔵昸㈸敤扥㡡㈷㌶㕢挵〸㠵㈵㘷㘲㠴〰㐳㝤愲㡣㍦㙡㔵㜵㘴戸愱晣㠹昳〴昸戵捣㘲挴㐴㠹敡㝢ㄱㄹ昴攵捥慢㔶㤷㤰㐹晡敡摣㠸㡣慦㝣㤴愱挴ㅢ㤱㜴敡ㄴ㈲慦㙣㈱㔲㡦㐵㈷㜶挷敥〸㈱㠱㈵昱戳搹慥戲扤搰㘳愸㕦㝣㈴㐱捣㠹ㄳ挹㈷㔴㕡ㅣ㝣〲㘱㐴愶㈹〹㠹ㅢ㈹㍥㥣㌴晥敥昷㥡扥㔳㔴㈰㠱㝡愲挶㈴㌸搵昸㐳㐹攳㐳昸㍣㑢戵挹昱㉡〱搳ぢ㐹㘳ㄲ愶㙡晣㜸搲昸慦㠷昶㌷ㅡ㈷㜴ㄸ㡤慣㤳㐸㌲㡣㕥㜵っ㐸㝤慡㍤㡣收扡㐵㐵㍡㘰㐵挵ㄴ愱㉡㠶㕣㔳慡㜴㄰户㐲㝣㝣㉣㍤㠷㑢㑥戸ぢ〲㘹ㅢ晤㍦ㄳ㑥攲昲搳慣ㄹ㥡昸ㄶ㝡ㅤ㔱㘷摦㔰㑦散㕣戰收㝤ㄴ昴㕢㈷〳ㅣ慥慡㍢㡡㐴㘰ㄷ攴愳晤摤挲㍢㥦㘱㐳㌶昷㈳㠹㤶㘹扣㑣搲㥢ㄶ㔱ㄱ㤶扣㜸㉣挱㙣敥搱㈶捤ㄸ㡦〰㌹㄰㤳㠰捣ㄸ㡦〲㐶ㄱ㤹㝤㉣ㄸ㈱晦㉢收㝥㡣ㄵㅦ㈴㜸ㅣ愰㈴挸散愴㠳挲㠷〰㠶㤳晦㘳挵搸扡㜲㥣㘸攲愱攴㘵㘹㌲㌲㍥挲づㅦ〵攸㠳ㅦ㔷挴㐴㔸㌲㍥㠶㤲昴㑢㈹㌸搴㑢㍦捥㡡㑦㄰㍣〱㔰搲㌹搹㙤敦ㅡ搷搴愳ち晢㈴扡㡡㐷〹昰㌳㍥ㄵ㘷昸愰㜳ㅦ摥搶摤㘸收㤹㌸昹挲ㅦ㌱捦㤶㑦昹敦挱愷昹ㅢ㕣㜴ㅦ晥捦㈴扡戲昰昳摡㕢㝢ㅢ㡢㑣㐰攳㕣晤搶戰搹㉦㘱ㅣ慥慢ㄹ㑡攱㠸㔴㉡㐵慤㈰㠸㙦㉥㔸㜸㜸〳摦㜲㐴㔵〸㐱ㅡ㔰ㄵ㙥㕣㜱ㄴ〵挶㘷搸㤴㌸㈶㥥㡣捦昲㠹愸㔵㥢昸戹㌸挳〷㐱扣慡敥て挴摤㤳ㄷㄲ搷慡挲㙥㝢㈱昱慦㉡㔶搳㉦㝣㤲㠳㈹㘴㈱搳慡㤵㠸㌴㐵㐳㕦㐲㘶愸㙦㤸㜳扢ㅦ㍦敤㤲愸㥣慦㥥㍦晦捦攱晣搸戵昹㜷扦㜳昰挹ㄷ㝥昱挷㑦晦收㝤㐷晥昲慦愷㥥晡捤㥦㍥晤晣扦㥥㕢㍥昲戳愷㥦晥改扤㕦㝤晥㡦㝢慤慦㘹摦晢攷摣搷ㅥ㥥扣昰昰㠳搶搹摢㡥㍦晣㥥〷敥㥢㕣戸㘲扣慦慦扦晦㤶搱㥦㕦昳挶㤱㐷ㅦ㝣㐶晣昸㜷㔷扢㐲㉤ㄷ㉦㘸㥤〶㤷慤愶昱㘵㘴㌰つ捥昸ㄵ㥤〶㤷慢㌶㙡㌹摥愸㘹ㄴㄴ攱摣攰〴㔴㠵搹㕡㌱昰ㅦ捤捣戳搲 | B27: 㜸〱捤㝣ぢ㝣㔴搵戵昷散㈴㌳㘴㑦〲㡣㠰㡡敦㈸昸〴㜳昳㝥愰㤸㠴㈴㐰㌴㈴㤸〴ㄴ㡡捤㌷㐹捥挰㐰㤲攱捥㑣㠰昸ㄶ㉦㔶慣㤶㕥搴戶扥慤㡦㕡㤵慢慤ㄶ㝣㔶㕢ㅦ㕦慤㔲戵㕡㕢慢戴ㄵ㡡摥晡昸㕡敢㔷ㄱ〵攵晢晦搷㌹㈷㌹㜳收㑣㌰摥㝥扦㕦㜷㘶搶散扤搶摡㙢敤昵摦晢㥣㌹㝢捤㌹昱㈹㥦捦户て㠵㥦㉣㌹慣ㅣ摥㍥㤸㐸ㅡ㝤㠵昵戱摥㕥愳㍢ㄹ㡤昵㈷ち敢攲昱昰㘰㜳㌴㤱捣㠶㐲愰㌳ち㜹挲摦㤹㠸㥥㙢攴㜶慥㌲攲〹㈸昹㝤扥摣㕣㥤〵昹㔸敢ㅤ戲ㅢ㥡扤㜴づ〹戴㝣㍡㐰㌲㠶㈴㤷㐴㤳〴㐹昲㐸昲㐹㘸㐳㡦㈳ㄹて㤲ㅦ〲改愸㥦搵摡戵ㅣ㈳㙡㑦挶攲挶昴㠲㠵愶摦㤹挵挵㠵挵㠵愵㘵挵搵㠵㐵搳ぢ敡〷㝡㤳〳㜱㘳㘶扦㌱㤰㡣㠷㝢愷ㄷ捣ㅦ攸敡㡤㜶㥦㘱っ㜶挴㔶ㄸ晤㌳㡤慥愲搲慥㜰㔹㔵㜱㔹㜹㜹愴扡扡㉡晦〰㔸㙥愹㥦㌵㍦㙥㐴ㄲ晦㉣㥢ㄳ㘸戳戵㝥㔶㘱㡢㤱晣㘷搹㥣〸㥢㌰搹㄰敢ぢ㐷晢晦㐹㐶晤㥣㤷昲〶愳㍢捡〹㌴㡣㜸戴㝦㘹㈱㠶㥤〲㌴㕡㤵㠵㜵㠹挴㐰摦㑡慥㠵㝡愳户户捤㠸挸挴昵㌵㈴㤲昳挳昱扥㐴㝥ㅦ昱㌳攲㐶㝦户㤱ㄸ搷搷戸愶摢攸戵ㄴㄳ戹㝤ぢ挳昱㤶㜰㥦㤱挳捡昸㍥㜳づ㥢㝡㡣晥㘴㌴㌹㌸戶㙦㐱挲㘸ぢ昷㉦㌵愸攲敦㥢㌳㄰敤㔱㌹㌹㜸昹戲㡦昷ㅡ㤹㑣ㄴ挶搳㔷扦㉣ㅣ㑦㑡㡢㔳㔸散愵敢㔸㉥ㄲ㐵捡戸戸愴ち㕣扤㌸㘷敤搱扥㌳㡣㜸扦搱㑢㈷㥣挹㘹㉥㈵〱挸㥣㠷㈱愴散㜰㌸㑢㉡捦㍡㠰ㄸぢ扤〴㈶㠱㌴㜵挴愳〸㜳愰㌷ㅣ㥦㍥㉦摡㍦戳愸戰戴㙡㝡㜳㜴㠵搱ㅢ㌵ㄲ㐹㌶慢㡢捡慢慢换㡡捡㑢㉢换㑡㡢换捡慡愶捦ぢ慦〱扦慣愴扡愲扣扡戴慣扣扡戸戸ㄲ戴㔴ㅦ〸㜳晡㈰ㅡ㍥ㄸ攴愸昶愷慦㙡慢㙢㈹㜸昶愷㡤捤㡤㡢㕢敡㍡㥥扥愹㘰㙥攳晣㡥扡戹㡢ㅡ摡㥥扥愴㐳㑦愶晡㈱㈰㉡攷ㅤㅣ敢捥搱昱㜸换敡っ㘷㜵㜶㘵㜵㜶㘷㜵昶㘴㜵ㅡ㔹㥤㤱慣捥愵㔹㥤换戲㍡愳㔹㥤换戳㍡㔷㐰挷㉥戹㘳挶㘴㔹㘵晢㕤昹昵挷扣㍢㙥摥㑤摦戹攱捤㈷㙦㕤㤵愵㜸㜸换搹攱㌰㔴ㅡ㕣搱㔶ㄴㄶ㤵㤵ㄴ㔵攱愰㉢慥慡㉡慤㉥愹㜴㠴㕥㔱㔸㔹㕣㕡㔶㔲㔹㔲㔹㕤㔵㔹㕣㔴㉡㜱㔷ㄶ㔶㤶敢挳㘱㐹ㅦ〱ㄲ㌸ㄲ攴㜰〶搴㝡㜶㔳㐳㐱㜳㔳挷摣ㄶ㠴㌹慦戵愵搵㡥昲㈸敡ㄶ㠰㈸昵㈷㐴挹㐸㡦晥晣昳愵㙢ㄷ晣㜵捥㔵㘳〷敦㙥㝣收搳挵㡡㈷ㅦㄹ攲㌱愸㔴扢㠶㠸㜳㐸戹㘳㔴挵㠵㘵㔵搵挵ㄵ㐵㈵愵㈵搵㔵搵攵㤵愵㤵㌲慥攲挲捡ㄲ㍤〵摤昵㔴㤰挰戱㈰愱搶戳ㄷ戵㉦㘸㥥㡤㠱㜵㌴㜵搴戵㉣搰挷㔱㝥㍣㠸㔲慦㕢㘳搹晡㐴捥愶㕤晦攷挳搶㉤㐷㑦昸摢攵〷摥ㅣ㔶㍣〷捡㔸㑥㐴㘵㥡㝢㉣愵㠵搵愵㡥挱㤴㤹愰㤴ㄷ〱㉡㝤ㄲ慤㑦〳〹㑣〷㌹㘰㝥㕢㙢㐳攳改㉤㑦㕦㔵㔰摦搸㔲㌷愳㘴㠶㍥㤹ち㠵㈰㑡晤摡㜲晦扢㠳㉥晡挱㤴挳㌷搵晤攷㐳敦扥晢挶收㐷㑥㔶㍣晢㡡晢㈲㔴搲摣ㄷㄶㄷ㍢扣ㄷㄷ㤶㤴㔸挱㤷ㄵ敢㘲㕡㉦〱〹㤴㠲㑣散㘸散㘸慢慢㥦摢摣摡㌶ㅣ㝦ㄹ㔵捡㐱㤴㝡摥ㅡ挰攵㌷㍦戴扥㍡㜲摦扣㐷㤷散摢戹挳㜷改㔳㡡㈷㄰ㄹ㐰㈵㉡改〷㐷㜹戵㘳〰㐵㠵ㄵ㔸ㄷ挵挵攵㤵㐵㔵搵㤵愵ㄵㄵ愵收㜸挰㑦㔹㍡㈵㌸㌸慡攸扢ㅡ㈴㌰〳攴挰㌳ㄶ戵㌷㌶㌷戵搴ㄵ捣㙥㙤㥦摤摡搶昸捣㤵㉤㑦㕦愲㑦愱搲愹㈰㑡㍤㙤つ㜰扣ㄱ㉤愹㙤㍣慤昹挷㜷敤扣昱晡昱㉦㝥㑦昱㕢㐹〶㜸ㅡ㉡㤵慥〹㉡㈹㉣㜱㡣慦愴戰慣戸愲慡戴戴慡愴愸戲扣ㄴ愳㉣ㄳ戸㑡ち慢㜴つ㍤搵㠲〴敡㐰挶搷搵㌷㜶攰㤸㉣㔸摣搴㜶㐶㉢㔶捡㉣㡡敢㐱㤴㝡摣ㅡ挸晡㍤户㥥㜲昵摢て搶摦㕦㔵晥挵昳捦搵㘷㈹㝥㌳捡㐰ㅡ㔱㤹攳ㅡ㐸㐵㘱㐹㐵㜱㘵㌵㜰愸㉣㉢慡愸慥慣慡㜰㡣慢愲㄰ぢㄷ㠷㕣㜵㔱㔵㐹㐹㜵㜵㘵㠵〹㕢㔵㘱㔱愹㥥㑤捦㜳㐰〲㜳㐱㈶づ攱㔴搷㝥㐶㙢摢慣搶㠵㐰愹㠹㉡愷㠳㈸戵搹ㅡ摣〵て㝣㝡攲㈷㑦捣㙥扥昸㤹㠷㝣昳㝦昷戵つ㡡㘷㄰ㄹ㕣㌳㉡㈷戹〶㔷㡤㠳挵㌱㥣搲㈲㠱愵戴ㅣ愷㍥㍤㡦挶㕢㐰〲慤㈰敥㔵㕣㌶㐳捦愷挲㤹㈰㑡摤㘷㜹㉦㍦戸㙥挹㈷搱昳㥢㙦戹昰昸ぢ挷㌷摦扣㔱昱㔲㐱扣户愳㤲戶㡡㑢㄰扥挳㝤㤹改扥慣戲戰戸㔲㜷搰晡〲㤰挰㐲㤰㜱愹〷㤱㍥㡢搲戳㐱㤴扡换昲㝤㐳散昱捦㈶㕦㥡㕢晢㘸㕦㐳㜷㈸㙢捦㜶挵㉢ㄴ昱扤ㄸ㤵戹慥挸戱㌲㔳ㄷ㜰㘵ㄱ㈶愹戸慣愴愴愴慣愸ㅡ㈷㜷昳㠰挶昱㕣㔹㔵㠹㌹慡㈸㉢慢㈸㉦㉡挵晡晤ㅡ㕤㉦〱〹㥣〳㌲㘱攸㥣搷搰㔶㠷㤵㡣戳㥥晥㍡㌵㍡㐱㤴扡搵ㅡ摣扡〳㈳ㄷ㜵㝣昱散摣㑢㤶敥搵㔷㝣敡㍦㔸昱捡㐹〶ㄷ㐶㈵晤㑣㔷改晣敡㈹〶㑣㕣ㅤ㐵㈵ㄵ㌸晦㤶㔷㤶搸慢户愴㐲㜷搱㔷㌷㐸愰〷攴戰㠶〵敤㑤㌸㠲昰㙤戳戸愹㠵挷㔲㕤挷愲㠲戶搶挵ㅤ慤㘷㘸㠳慡ㄱ㄰愵慥戳㠶戵敤搷ㅢ㜷〵捥㌹愶昶慥㈵㙦敥㝣攲㡡换㉥㔴扣㤶㤳㘱㉤㐳㈵㙤扥㐶㍡改㐵㘹㝤㌹㐸㠰摦㐷敥攵㔲㍡㐳昷㔲愱て㐴愹㡤㤶晢て㕦摢戶昶戱㕢㝥㔶㝦摢㤱㡢ㅥ㑦ㅡ㜹ㅦ攵挷㈰㍥搳晡㜲㙥㠸㠷㔷攳㜲㘷昸㑡慡愴戰㠸㝦晢扦㠴挴ㄵ㘴愴㍣㔲ㄹ㈹㉥敥㈹㉦ち㤷㠶晤晣㍥晥戲搷㉡扣ㅥ挸㡦㥣ㄵ敤敦㠹慤㤶㡢㤷挳㘷㠵ㄳ挶昰戵捣㌴㑢㌶㉢㌶搰摦㤳㌸捣㕢搸㥥っ㈷㡤㐳摤戲㘱㈳㘹摤摡㜱㘹㘷㈴挴摦㤱敥㙥ぢ挳扤〳㐶摤㥡愸㈹㍥挲㈵挶㠵㕤慣㉢戳㜴㜶摣昸昷㈱㘹摡㠸敡戰㝢㔸㈵戶搳愲㌴㐵收戸ち敡㤷挵ㄲ㐶扦っ㙦㕡摦晣㘸昷ち㈳摥㙥㜰敦㘱昴㐸愸〷㔲㘴㕤㕤㑥㙢敤㐷愰戸㕥散㌹挶挹㡤㌴慥㐹ㅡ晤㍤㐶て挶扢搲㠸㈷〷㍢挲㕤扤挶㐱㈹㉡愶㑦〸づ㐹㘱捦㡥㜵て㈴敡㘳晤挹㜸慣㌷㔵㔲搷戳㉡㡣㉢摡㥥㜹戱ㅥ〳ㄷ愴㌹㉣㍥攵换捥㔶捡㜷㤲搷㔵㈱敤㈶ち㘵㈲ㅣ㔳捣敢搳挹愹换慥戰つ搱㈱㡡㕥㠳㙢㌲㙢敡㝥㡣㠹㕤㥡㌹㌱戳愲㈳㈶㙥搴愸㝤㐲㘶㙤ㄹ攳搰捣晤晦㔵捥捡㥡㘸㐵摦戸ち㔷晤㜳挳晤㍤扤㐶㝣挴㙤愶攲㠸昴㑡㄰晦〶ㅣ捤ㄹ搱攳㐵愷㕡愳〶晤慢愳㍤挹㘵㠱㘵㐶㜴改戲㈴㜸搸㡡收收ㄲ摡戴愲攳㘰改〴〹ㄵ㠳㐱㕦㘰㠰㑡㠱愰㕥㘵戶晤扣戴ㅥ晤㝥㠲㥢㕤㉤晢ㄷ㙣㌶ㄳ晥扥搹戱㜸㈲㍢摢㉢捡戹攱挴戲㈴㤷攷㠸㐲㥥㈹昴㙡㤲㌵㈰㝥㕥挵敦㜷扢挲昳㙢づ㜷㘵㘳晢ㅡ㡣㐸ㄸ㝢㘱㌹扡㔵搸摦㘷㙥慦ㅡ㡣㐴户收㍥慣〹挷捡㥡〰㙡㌸昸昳晢戸晡㡤㌵挹㠶㜰㌲㍣愶て㍢㍡捣㤲㠶搲㌴改㘵搶搸㜳慣昰散摥㐱慢〵ぢ㈱愹㍡慣攴〹挳戴㠴〳〷挷㡢㉦摢愲㈳〷㠱戱㜳捦ㄵ㜰㉦昴搴㥤ㄹ㌶㡣㍤㜳㡣晥㡥挱㤵㐶㠲敡戹㠱ㄱ愱㜴ㅦ㕥㌴搶摡摤戵㈰ㄹ敤㑤ㄴ㘲愴㜳攲戱㠱㤵晦㑣㍢戴愵〷㐱散攲扦っ慢昸换挷挴㌴捣㤸㔵㥣㥢捥㑥㕦㉥慤㤱愳戹摤搳㕣慤㌰戶てㅦ㔲昴〵昸〸㡥㈴昳㜳昳㌷㥡㕤㉣昷㐹昹㝤㐰愸㈳㙥挸扥㍣㔷ㅡ㐰㝢㙣摦㔹戱昸㡡慥㔸㙣〵搷搳㌸㘹㈵㤶ㄹ㐶㤲㝢摤㍣㙢㙦㉦㝢㜸愵戲戳㔳戶㥡㡥㑤㌱㜷挹㠱㑢㐰挶搶昵昶ㄶ搸ㄶㄳ㠱戵㘰㘵㘳搷ㅤ戸ㄴ㤵㐳ㅡ㔷挴晡㘳㝤搱ㄵ攱捥㔵㤵㥤搸㤵㜷㌶搷搷ㄷ慥改㑤昴愹昳ㄱ㍥㌷㜸ㅢ㙥㙣慢㕣户昹㡡㠶㙦晦戱㜹攱ㄱ㡦㕣昳㠲㍡捦ㄲ愴㙤㑥戹㤳攴搷戴扥っ㐴つ戲㉦摥愸愷ㄶ㝤㌹摡㝡㍤挹ㄵ㈰㌸㌹〸摣㌸㌷㕣㘹㌶ㄵ㜷愳㍣㍦攸慢㐸扥〵愲㡥〲攱搱愹㌷㠰搸㐵慤㠴㝤㑥扡㑣ㅣ户慦改ㄳ㜷㌵戸㐱㍤㠲㑣ㄵ㐰㠳㤳愷〹㤶㈶㍣㥡搰愸〸っ㝢〲㘰㔸㠲戴慤敦ㄴ㜴ㄳ〰㙥㘴晦㙥愸㜹〳㜰㌳㝤摣㐲㜲㉢㠸〳㠰摢捣愶攲戶㔷〰戸ㅤㄵ㝤〷㠸㍡づ㐴〰戸ㄳㄵ扢愸挵昰㌱〴挰戱㘰愷〳㜰㌷戸㐱㍤㠲㑣㜱ㄳ敤〵挰晣㑣〰戴㕡㠲戴晤昶㐹戰㈴〰㍣㠰㡡㥡㤷ㄱ㠰㥦㐰慣㌷㤳㙣〱㜱〰昰戰搹㔴摣㜹ぢ〰㡦㔰改㔱㄰㜵㌲㠸〰昰ㄸ㉡㜶㔱つ㑥〰愶㠳㥤づ挰㤳攰〶昵〸㌲挵㙤扣ㄷ〰㌳㌲〱㔰㙤〹搲㜶晣挵戰㈴〰㍣㠷㡡慡捣〸挰昳㄰敢ㄷ㐸戶㠲㌸〰㜸搱㙣慡ㄲ㝣ち〰㉦㔱改㘵㄰㔵〶㈲〰晣ㅡㄵ扢愸㐲㈷〰愵㘰愷〳昰ㅡ戸㐱㍤㠲㑣㤵㐳挳ぢ㠰愹㤹〰㤸㘲〹搲㌲づ㔵戰㈴〰晣ㄱㄵ㜵㜴㐶〰摥㠲㔸㙦㈷搹〱攲〰㘰愷搹㔴搵昸ㄴ〰摥愶搲㍢㈰㡡〹〵〱攰扦㔱戱㡢㥡散〴㠰改㠸㜴〰摥〷㌷愸㐷㤰愹㔳愱攱〵挰戸㑣〰㡣戵〴㘹ㄹ㡤ㅡ㔸ㄲ〰晥㠱㡡捡换〸挰㉥㠸昵㈷㈴扢㐱ㅣ〰㝣㘶㌶㔵㉤㍥〵㠰㍤愸攸扤㈰㙡ㄶ㠸〰昰㌹㉡㜶㔱㔹㑥〰敡挰㑥〷㠰㤷〶㐱㍤㠲㑣搵愳㥦ㄷ〰扢扦挸㜰ㄲ晣挴ㄲ愴㘵㔲㘶挳㤲〰㄰㠴㔳昵㌱搴扣㑦㠲昹㄰敢戱㈴攳㐰ㅣ〰㠴捣愶㘲摥㐴〰㌸㠰㑡ㄳ㐰ㄴ㤳㈵〲挰㐴戴散愲㍥㠰㡦愱㤳㈰ㄳ㉤改〰ㅣ㑣㥢㝡〴㤹㍡ㅤ晤扣〰搸㤱〹㠰敤㤶㈰㉤㕢㌳て㤶〴㠰〲づ昹㑦ㄹ〱㌸〶㘲㍤㠵㘴㉡㐷㌷晣㌵㜸㥣搹㔴㉤㌰㈴〰ㅣ㑦愵ㄳ㐰搴㝣戰〴㠰ㄳ搱戲㡢晡慤ㄳ㠰㔶戰搳〱㌸㤹㌶昵〸㌲㜵㈶晡㜹〱戰㌵ㄳ〰㉦㔸㠲戴㠴㔱〷㉣〹〰ㄵㅣ昲㉦㌳〲㔰〵戱慥㈶㤹挱搱つ〳㜰慡搹㔴ぢ㘰㐸〰㤸㐹愵搳㐰ㄴ㤳㐶〲㐰つ㕡㜶㔱㍦㜳〲戰㄰散㜴〰敡㘹㔳㡦㈰㔳㘷愳㥦ㄷ〰㕢㌲〱戰搹ㄲ愴㘵慤㤸㕥ㄲ〰㥡㌹攴〷㌳〲搰〲戱㙥㈵㤹捦搱つ〳搰㘶㌶搵ㄲㄸㄲ〰摡愹搴〱愲扥づ㤶〰戰〰㉤扢愸㝢㥣〰㌰愷㤵づ挰㈲摡搴㈳挸㔴㈷晡㜹〱㜰㙢㈶〰㙥戱〴㘹㤹戱㉥㔸ㄲ〰扡㌸攴㥢㌲〲搰〳戱㌶㐸㈲ㅣ摤㌰〰换捣愶敡㠶㈱〱㈰㑡愵攵㈰捡〰㑢〰㔸㠱㤶㕤搴㌵㑥〰㝡挰㑥〷㈰㐶㥢㝡〴㤹㡡愰㥦ㄷ〰㔷㘴〲㘰扤㈵㐸换挱㌱㤳㈶〰慣攱㤰扦㤱ㄱ㠰㜳㈱搶攷㤱㥣捦搱つ〳㜰愱搹㔴换㘱㐸〰戸㠸㑡ㄷ㠳愸㕥戰〴㠰㑢搰戲㡢扡搰〹〰搳㜷改〰慣愳㑤㍤㠲㑣㌱戵攷〵㐰㌲ㄳ〰〹㑢攰捥〲晡㤹㔵ㄸ㐵昶㈶㡦〳㡥㉣㡣ㅡ慢戹摤ㅣㄷ挱敦㤵昵〳㠹㘴㑣昶挶㘳㈳つ戱㤶㔸戲㈱㥡㔸搹ㅢㅥ㥣ㄸ戱㉡㘷㉤㌳晡㤱戹㡡㈳㠱攵攲挵㔶慥㌴㝡㜴愴㍤㌶㄰敦㌶㥡ㅡ晥ㄵ㌲㕢㠸て㔳㈷㐹慤㉣㠵昲搵㤲㌵挸扢㉡慣ㄲㄴ㥦㍦づ㠳敥㍤户晣㙡敡挸㡦㐹㤵㌹㡥昱挳㠸㜶㐴㤳扤㐶㕥㐴㜲㔳㔲捦㡤〰㐵愴〳㝢挶㐴㍡㤶㘱㉦摡㌰㌶㌲㈷ㅥ敤改㡤昶ㅢ㥣㡣㐹愶㙡戳戱ㄴ愹扦昹戱㐴㤴㍦㔰㡦㡤㜴挴挳晤㠹㤵捣㘲㜴て㑥㐸㘹㐹扡挳ㅦ㤹ㄵ敤㑦挰㡤捣㈲敢攳㈳敤换㘲慢㜱扦挳㐰㕦晦㥣昰捡挴扦挴慣っㅦ㐱㌲㌵㉡㑢㘵㘵愹摣慣摣慦㍡㍦㠱㙦挱攲挱挳扦㔳ㄴ㘰慤㈶攳搱慥〱㠲挶㈵攰攳㠵㝤づ㠹捣愳捦㥦㐰捤㥤戳㜰㑣愳㉢攱挸昱愶摣〷攰㤹晢ㅡ扡㤱㐴ㄲ㝣ㅢ搰㈹晦摢㈰愷捦㔹搰㌴㥣㡡晦ㅦ摤搱攱㑦㘲㈰㕦㍡昳挹㌳攱㌸㜳ㄹ㌱ㅢ捡㔵㠵愳ㄳ慢㠱㉤昷搲っ㐶㐴㠷慢㜴摣㜰㜵㌶㤲㘷昹㤱收㜰㤷搱㡢㥣㕦㕦㌸㌹捥㙣㌰昹摡ㄷ敥㑤㔸戲晡㔸㕦㕦㤸换㡥昷㉤戴㜷㠷㝢㡤摣㐸摤㐰㌲㠶㥢〱㜴〴㐴搶愶挵ち慦〱㉢扣挶捣捥㐵摡昸㕢㠰搴㘹㉢戶㌴ㅣ㡦㈶㤷昵㐵扢㜳搹㘰扥晥㕦㘲扤攲ㅣ㤲〳㌰敤㘲㥦㑦摣改㍥㌳改㠶改㉥㐴㠶㥣搰㜱晡戱慡戳㔴〰㝦敡㉢愶㡡㜱昶㤱㉦ㄵ扤ㄱ搶晣㔹ㄸ〴㑦㐷㔲㍥戴敦㙥晡㤰摦㔳㜲㠲㔲慢愸㠰户扥ㅡ㤴ㄵ扥㜳㤸㙣ㅤ㌱㡦㌸〶ち挱收㔸戸㘷㜶戸ㅢ昷㈰㡤戱敥㐰捡挵搴昲㜴ㄳて㌱戳㕢㡦ㅦぢ昰㈳挴慡㘸㡦ㄱ捦㈵愳ㅤ㜷㐹攵㌰㈷ㅣ㌰攷㄰㌹慥㙣㥦摦㥦㤷敢攵慢挹戶㌵搵捡㤷㌹敦挲㙡㑡戳晦挱㤹㔵摣搵㈱㉣昹㥡扡〶㜱攸㙢ㄹ搳ㅡ㌰ㄹ㡦㑢攱㍢㔴昸㉥㠸㝦㄰㐲昷摣愴㈶㔹㤱㡡搵㔰捡㤱㝢㜷㤸晥捤㐵慡㔴昲挶㝥〹㈴捦㤱敦つ㤸愹摥㕣晢㠶愰㐰㍢㔶戹搱ㄳ㌴捦戱捣㉢㜳㍡戲戲㜲㌰搵〱昷㙦㘵㘹㙥㘱慣慦摤㤰㐴戰㥡㠰㈱〴扥㠷捥挷昳㘰㠱晤捥晤摤敦㌲㠰ㅥ搸㜷敥挳㠷㤴㘰㔰㕦㡦晥扥愰扡〰搴〶㈵㤷ㅣㄳ戵ㅢ㈰搵㌷㠲愸换挰攴攵㠱攳换㑣㕤㡥㈶扦搰㝣㠱㥢愰㌲㥡ㄳ愸㕡㡦㕥㍣㠹敡㥢㘹晣ち搴㜸㙥ㅡ㕡慢户㠲扢晦戵㝡㈵㝢攰慤扦㑦㈳㔶㐳㌱晤㘸㠷㠲慡ㅤ捡㙤㔰搰户㔳昱㕢摥ち㜷㔰攱㑥㉡㌰㕢挹㐵㄰昸〱㕡㔳㙤㜰㠷㝥㙦昶扡挷挶〳搹ㅦ愲㌳㤰扤摡攱㡤㡢挶㐲昶㙥㝡扢㠷摥㤸㜶㜴㈳换㕣愳㠹散扤㔰ㄹㄵ戲户愰慢㈰扢㠹挶㙦㐵㉢〵搹晢挰摤㍦戲户愱ㅢㄴ㝤晡㝥ㅡ戱ㅡ㡡㜹㑤て㘴㝦〴〵晤㘳㉡摥攱慤昰〰ㄵㅥ愴挲㥤㔰㄰㘴㝦㠲搶㘴ㅢ搹戴扢㠴㍣搰摣㠲づ㐰昳㙥㠷〷挷㍡㝤㠸ㅥㅥ愶㠷〷愰攰㐶昳㈷攰㤹㘸㍥〲㤵㔱愱戹ㄹ㕤〵捤㐷㘹㝣ぢ㕡㈹㘸㍥づ敥晥搱㝣ㄸ摤愰攸搳㍦愵ㄱ慢愱ㅥ㐱挵〳捤㈷愰愰㥦愴㈲ㄳ愸ㅥち㍦愳挲捦愹挰㥣慡愰昹ㄴ㕡㠷搸㘸愶摥戰挱扢㥥㍣攰㝣〶㍤〰攷㤳づㄷ㝥㜲捣挳晥㔹扡昸摦㜴昱ㅣ㤸㙥㌸㤹〶㌵攱晣〵㔴㐶〵攷ぢ攸㉡㜰㍥㐷攳捣愲愶挰昹㍣戸晢㠷㤳搹㔶㈸㈲ㄵ㑢㈳㔶㐳㌱攵敡㠱搶㔶㈸攸㕦㔱昱㘵㙦㠵ㄷ愹昰ㄲㄵ㤸愱ㄵ㌸㕦㐶敢㌰ㅢ㑥慦扢戸㍣〰㝤〵㝤〰攸㙢づ㈷㡥昵昹㉡㥤晣㠶㑥㤸㘱㜵〳晡ㄶ㜸㈶愰慦㐱㘵㔴㠰㙥㐷㔷〱昴户㌴扥〳慤ㄴ㐰㕦〷㜷晦㠰敥㐴㌷㈸晡昴敦㘹挴㙡㈸愶㜰㍤〰㝤〳ち晡㑤㉡㌲扤敢愱戰㡤ち㝦愰〲㌳扥〲攸ㅦ搱㍡挲〶㜴攸㝥慡㤴晢捥㍣㈰㝤ぢ扤〰改晢づ㌷づ㐸户搳捤づ扡昹〷ㄴ摣㤰敥〲捦㠴昴捦㔰ㄹㄵ愴㥦愰慢㐰扡㤳挶㜷愳㤵〲改㍢攰敥ㅦ㔲收㠳愱攸搳晦㑤㈳㔶㐳㌱㈹散㠱搸㕦愰愰摦愵㈲ㄳ挶ㅥち敦㔱攱㝤㉡㌰㠷㉣㤰㝥㠰搶挱㌶愴敥㝢攷㍣挰晣㉢昴〱㈶慦㌵㙣〷づ㌰晦〶戶晥㄰㐴〵㐱摣㘰收㠳㘷㠲昹㜷搴㐶〵㈶㔳挵〲收㐷愸愸㜱㈰㈹㘰晥〳㡣晤㠳ㄹ㘲㕦っ㕦㝦㙣㔵搸㔰㑣㌰摢愱愰㙤㥦扢㜶㠱慤㍦愱攲〴㙦㠵摤㔴昸㤴ちㄳ㐱〴捣捦㔰ㄹ㍡攰㠷搶愷攳㝥㍦て㐰昷愲て〰㘵㡥摡ㅥ㠵〳搰捦挱搶㕦㠰愸〲㄰㌷愰挷㠰㘷〲捡㉢昰㔱〱捡搴戳〰敡挳愵扣㥡㡡㔶ち愰㔹攰敥ㅦ搰攳搰つ㉦㥦捥愶ㄱ㔴攴捤㠴戵ㅤち㜸㌶愰㌹搰搱戴愹㑥昰㔶〸㔰㘱っㄵ㤸摦ㄶ㐰㜳搱捡昴㠵㠴ㅢㄸ㍤攰っ愲〷攰㘴挶摢ㅥ㠳攳ぢ㈹㡦㉥昲改愲〲ち㙥㌸慢挰㌳攱ㅣぢ㤵㔱挱㔹㡤慥〲攷㌸ㅡ㥦㠱㔶ち㥣㝣㑥㘳晦㜰㥥㡡㙥㜸昹昴〱㌴㠲㡡扣㘷㠲摡愱㠰㘷挳㌹〱㍡㝡㈲ㄵ㑦昳㔶㤸㐴㠵〳愹㔰〳〵㠱昳㈰戴づ戲て昶搴敦㜷㉦㉣㈷㐳ㅤ㔸㌲㜹㙥て挰㠱攵㈱戴㝦㈸敤㌷㐳挱㡤㘵ぢ㜸㈶㤶㠷㐱㘵㔴㔸戶愲慢㘰㜹㌸㡤捦㐷㉢〵换㈳挱摤㍦㤶㙤攸㠶㤷㑦ㅦ㐵㈳愸挸扢ㅤ搴づ〵㍣ㅢ换〲攸攸愳愹搸攱慤㜰っㄵ愶㔰㠱㠹㜷挱㜲㉡㕡㠷摡㔸づ㕤搳て摦㐳敡戱㌶㡦㐳ㄷ攰戹挸攱挳㜱愸ㅦ㑦ㅦ㈷搰㐷ㄷㄴ摣㜸昶㠰㘷攲㜹㈲㔴㐶㠵㈷㔳散㠲攷㐹㌴ㅥ㐱㉢〵捦改攰敥ㅦ捦㘵攸㠶㤷㑦㥦㑣㈳愸挸㥢㠹㜹て㍣ぢ愱愳晦㡤㡡换扤ㄵ㡡愸㔰㑣〵收昱〵捦ㄲ戴愶搸㜸㡥㜴ㄷ慣〷戰㘵攸ぢ㘰㘳づ㘷づ㘰换改慣㠲捥搶㐰挱つ散戹攰㤹挰㔶㐲㘵㔴挰㌲㜵㉦挰㔶搱昸昹㘸愵〰㍢〳摣晤〳㝢㈱扡攱攵搳愷搰㠸つ㉣ㄳ㈹ㅥ挰㥥ちㅤ㍤㤳㡡ㄷ㝢㉢㥣㐶㠵ㅡ㉡㕣〲〵〱戶ㄶ慤㑣攷㔰摣搵敢〱攷㉣昴〰㥣晣挵挰ㅥ㠳攳戸慦愷㡢〶扡搸〰〵扣㝣扡㤱㉤㔴戲昱昶㙦㐴捤㥤昶㐸㑢㐹㌱㡦ㄵ㡣㌰㌹搵㥥ㅣ散㐵㐲㤰㔵愶㐱捣ㅡㄳ㍡愶ㄸ挹㤹㔸㍣㐷昹㜲摣㌷㈸づ昵㡤挱㔴摥㈴搷捤㥦搲㡤㤲㙦㘳㌴晥㐷㍦㑦扦挱㜱愸㍦〷㍥㝣㈷ㄸ晢戰〴收㈰愶㐹昳愲摤昱㔸㈲ㄶ㐹ㄶ戴㈳攱㕤挰㥢㘹昱㌳㔱㔱㥤晦㘱㔸昴昴挹挰㜲晡昹愰搵㉡摥㕣ㄶ㕣搱ㅦ㕢摤㉦愳昱㈷㜸㑦㌱扤改㌱㘳攸㈶㠸户㤴㈹〰㉦㜴㌵㈴散慣㥢攰㜸㙣㜶攸ㅡ㙡愲㠴㤸㙣㤲捡㜷散ち戳㑢㉣晥敢㔱昹戲愹ㅥ摡挶㤹愵㕢昵㈸㈳㘷捣ㄸ㜵慣敢捥搵戴ㄴ搱搰慤㝦㠱挰〴㍡摢㠲㤰扦㕣㈷づ㙦ㄸ㔱㜶㐶㐸㍥㝤〶愸㙥〶〹㠶㤸て攲㠰〲昳搰ㅣ㔷㍦慢搳㤱改づ戴㠰㜷〰㜸愹㡦戱〵㕡挱捥〷㕢㌲㘳㜸㍥㉥ㄱ㤸て捥〴㜰㜰㍦㥢㝤㠷ㅢ㤷㔰攸㐶换扡昹ㄸ㔷ㅢ戴攴㔹㉥昳挶慥㥢㈱攴〰昵〲昰㔹攱愲㔵户愲挶㠵慢敥㐱㤴㕣㉥㘰攲攱つ愸㜰扡搵て挱攱㤴愷㑥搹昷搱㐱愶㙣ㄱ昴㌰㘵户搱ㅣ㑡㠸改㈱愹摣㘱㔷敥戴㉡敡㠷愸㜰摡搴て㘰㡥㤰搲㠵晥ㅡ愸㕥〲ㄲっ㌱愱㈳㐶〹㡤㈶ㄶ㥡㤱㙢〶ㅢ扡挷ㄶㅥ捥㕥㕤攴ㅦ挱摡愵㈰㙡ㄳ捤戲㘵㠰捦㡡㐴㜶ㅦ㙡ㄲ搹昵㜰㤶ㅥ搹昷挰㑤㡦散㝥㜴㤲㐱㐴㘱ち㤱晤㠸收㔰㐲㑣捦㐸攵〱扢昲愰㔵㔱㕢㔰㤱挸扥攳㡣㙣〵挷搸ぢㄲっ㌱戹㤲㌱戲㠷㙤攱ㄴ㤸搷㜱昶㥡捡㥡㐴昶㈸㠴㜸攱㔷㑤昰㔹㤱挸ㅥ㐷㑤㈲扢挲ㄱ㔹㘰㌵㔴㌲ㅥ户敡㜲捦㜰㤹㑦㤱㤱つ愲㌳挲㝤㠲㍥㔰㐲捣㥦㐸攵㘷㜶攵攷㔶㐵㍤㠳㡡㠴㝢㤹㌳摣昳㌸昰昳㐱㠲愱㘷愱㐰愳㠱ぢ搰㜴慦昱ぢ挱昳㔸攳ㄷ㠱㥤扡挶㉦〶挷㙢㡤㌳慢㈲㐳㍥〹㉥昴㕡㘸挹〳㙢㈶㕥捦㐱㠸㤷㑦慦〳㥦ㄵ挱敢㜹搴〴慦㜳ㅤ㜸つ慦昱㌵㥥搰㌰㌷㈲㝥搶挳ㄴ愰搹㑡㜳㈸㈱收㐲愴昲愲㕤㜹挹慡愸㔷㔰ㄱ㘸㔶㌹愱昹㈶挷㜸㈵㐸㌰昴㉡ㄴ挴愸搷ㅡ㘷㝡㐳㠴挵㌰慦㌷戲㔷〹㙢戲ㄲ㝥ぢ㈱㕥㐸挱㠳捦㡡㐴昶㍡㙡ㄲ搹㜲捦挸㤶㜹㐶挶㈴㠵昸戹づ愶㄰搹ㅢ㌴㠷ㄲ㘲㔲㐲㉡摢散ち戳㄰㉣敡㉤㔴㈴戲㠸㌳戲ㅢ㌸挶ㅢ㐱㠲愱敤㔰挸ㄸㄹ戳っ㈲慣㠲㉤㝤ㅢ㝢㔵戳㈶㤱敤㠴㄰㉦愴㡥挱㘷㐵㈲㘳㤶㐰㈲㕢散ㄹ搹搹㥥㤱㌱㔷㈰㝥敥㠶㈹㐴昶ㄷ㥡㐳〹㌱㌷㈰㤵昷散ち㤳〱㉣敡慦愸㐸㘴ぢ㥤㤱摤换㌱㙥〲〹㠶晥〶㠵㡣㤱㝤㘸ぢ㙢㘰㑢㍦挰㕥戵慣㐹㘴ㅦ㐱㠸ㄷ敥昹〴㥦ㄵ㠹㡣㕢㜶㠹散㜴捦挸收㝡㐶挶㡤扢っ攲ㄱ㤸㐲㘴扢㘸づ㈵挴㡤扡㔴㜶摢ㄵ敥捣㔹搴㕥㔴㈴戲搹捥挸ㅥ攳ㄸㅦ〷〹㠶戸挷捥ㄸ搹ㄷ戶㜰㌶㙣改愷搸㡢户愶㤹㤱昱㝢㡤㙥昴戳㔶㐵㈲换㐲㐳㈲㥢攱㡣㡣攷㈵昹㉥愹昲㡣㡣㍢㘸ㄹ挴㉦㔱㐱㘴摣㉤戳㠴晣㜶㠵摢㘳攱㜰㡢捣愲戸搷㤵挸㉡㥣㤱扤〰慥摥ちㄲっ攵㠱㡡㔱㥥㠲㌴捦㌹㥡㘷ㄸ捤㤳㑡㈸ㅦ挴っㅢ戶昴㉢攴昳㥥㌳㌳㌲搹挶戲昵ㅡ昸っ㔱㈲攳㌶㔶㈲㍢挹㌳戲ㄳ㍣㈳攳㘶㔶晣晣ㅥㄵ㐴㌶〱ㅦ㉣㈱㙥㕥愵挲㥤慡㔴づ戴㉡㡡㍢㑦㠹散㌸㘷㘴㙦㠲慢户㠱〴㐳㠷㠰㘶㡣㡣㥢㔲ㄱ㜶挰慡摥挱㕥ぢ㔸㤳搵㜸㌸㥡㌲㘷㙦㕢ㄵ㠹㡣㥢㑡㠹散㔰㘷㘴㐳摦晦㤳㍤㈳㍢ち㥤挴捦扢愸㈰戲〲㝣戰㠴戸㤵㤴捡㌱㜶㠵㝢㐷ㄶ挵㍤愰㐴㜶㤰㌳戲昷挱搵ㅦ㠰〴㐳挷㠳㡡㔱慦㜳㈳户㠷㈲攴㑤㘶晡㈳昶攲㕤㘲㘶㘴戲扤㘳敢㘳昰㠷收㙣㍡ㅡㄲ㔹搰㌳戲㕣捦挸㑥戶晤㝣㡡ち㈲攳㠶㡥㈵挴㑤㥤㔴戸㠳㤳ち㜷㜱㉣㡡㥢㌰㠹㉣攰㡣㙣て戸㝡㉦㐸㌰㔴づ㥡㌱㌲敥捦㐴搸〵㕢㍡ぢ㤳㈲て㐵㥡㤱挹晥㡡㝣晥㍢㠵愱挸戸扦㤲挸㍥摢敢戸戲ㄹ㍡捥㜶㠳晢㌰㠶㤲㝡捤㜶㡡敤㠷晦㌱〳㤱㥤㡡㌶㑢㠸扢㉡愹㜰ぢ㈵㤵ㅡ慢愲㘶愱㈲㤱敤㠲挹㉤㌰㐹㠱捥攳ㄸ昳㐱㠲㈱㙥㠹㘴昰㕥挷ㄹ户㑡㈲㡣戲搷〴昶㕡捥摡愵㈰愱㐶㕢㜸㈰昸㘳戳晤㑤㘸㥦攲扡㌲昷扥㈱㘴㥡晢㜱扣㐶㍣㕥㌷㠸敥扥㙣晣ㄲ㙥晥㝥㥣㤳㌵攳慢搹攲戵㍦㙦ㅦ攱摢晦ㅥ愲晥ㅦ搸攱㝣つ敦〶㘸昱㈸扣昵挱〸㜸晣ㄹㄸ㙦〰㉤扥ㅤ攵㐳㝥㡤戰搴ち昵攵㕡㥦㈱敢㜳㔲敤昸㘶扢攷㌹敡攸㡤㜵晥户㉥扡攵敦昷㥣㜲散㑤昷敦戳㍥㉦㙡㝢昸挸㜵敦㥦昹㝡捤换摢㍥扢昳㥡㝤慦搷㑣㍥敥ㄷ敦慥扦攸捤ㅡ搵㠶㥥㠷挰慥扥㠴㘴㉤〹愷㐲扤㡤㌰㍤㥦昸搸㘹〹摣㡦扣㠴ㄶ挰㤲捣散ㄱ㌲㜹㙡ㄱ摡㥣㐰戵〳㍤㠸㥡〴㝡ㄴ〳晤ㅡ搸㕦㉤搰㈵㜶捦㑣㠱㥥㤷扢愶㘲昲戴挹戵愵攷㌵摦㜷攵ㅢ㠷搶㈲ㄶ㤴愳㙡㔵ㄷ㝡㝡〵晡㠷㑣㠱㙥戳〴敥㐷㕢㐲〶㉣㐹愰挷㥡㠱㐶搱㤶㐰摦㜰〶㝡㍣〳㕤㘱て搷ㅣ㠶㑤扦挴㡣昶摡㍤㌳〵㝡晤㜵㉣ㅦ搷っㅣ㕡㝡摦㜵慦㝥㔲㠳改挵ㅣ敦愹㔱㜱昴昴ち昴戵㑣㠱晥挶ㄲ戸ㅦ㘱〹つ挰㤲〴㝡戲ㄹ㈸㡦㈷〹昴ㄵ㘷愰晦挶㐰捦戳㠷㙢㠷㘸㝥㝥㠹㐰捦户㝢㘶ち㜴挹㠶愷㍥㍥㘱摢戴㕡戱㜸㜱㘳敤㜹㤳敥㥢戳㝤㜱㔳慤㕡㡢㥥㕥㠱晥㉡㔳愰㕢㉤㠱晢㔱㤵搰㍡㔸㤲㐰换捤㐰搷愳㉤㠱㍥敦っ戴㤲㠱㝥搳ㅥ敥愸〳扤搲敥㤹㈹搰愷㍦㍥〱戱晥摤㥡挹晦㕢挳戸㤷㙣搸㔵愳㌶愲愷㔷愰捦㘶ち昴ㄹ㑢攰㝥㈴㈵㜴㉤㉣㐹愰㌳捤㐰慦㐳㕢〲㝤捡ㄹ㘸つ〳扤挱ㅥ敥愸〳扤搱敥㤹㈹搰敤攷㜲ち㜷搴慣摤㝢敦搱㥢扥昱攷㥡愷慥扤晤㠹摢捦㝢扢㐶摤㠶㥥㕥㠱晥㌴㔳愰㡦㕢〲昷愳㈷愱㍢㘱㐹〲㙤㌴〳扤ㅢ㙤〹昴㔱㘷愰㜳ㄸ攸扤昶㜰㐷ㅤ攸㈶扢㘷愶㐰捤㘳㔴搵㍥ㄷ昸㕦扢㌷㉤挸慥㡤㐸〹搴慡〷搰搳㉢搰捤㤹〲晤㠹㈵㜰㍦㘲ㄲ摡っ㑢ㄲ攸㍣㌳搰㐷搰㤶㐰ㅦ㜰〶摡捡㐰ㅦ戳㠷㍢敡㐰ㅦ户㝢㘶ち昴戴㌷收慤㥣㤴㝦㐸敤慢㜳㥥㍢晦昲摦ㅣ㔶㉢㑢㜷㝣㐱慤㝡ち㍤扤〲晤慦㑣㠱㙥戲〴敥㐷㐹㐲捦挲㤲〴扡挰っ昴㤷㘸㑢愰昷㌸〳㍤㡢㠱扥㘰て㜷搴㠱㙥戵㝢㘶ち昴摦㘷〶㝦㜷晢捡㈹戵愶攵搳㙡愵晤愳扡㕡昵ち㝡㝡〵㝡㘷愶㐰敦戰〴敥㐷㐶㐲慦挱㤲〴㝡㡥ㄹ攸敦搱㤶㐰㙦㜳〶摡挹㐰摦戴㠷㍢敡㐰户搹㍤㌳〵㉡㉢昵㥤ㄳ慤㐰ㅢ㙡㜷昱摣㜴敤㥣㕡戵〳㍤扤〲扤㈹㔳愰㌷㕡〲昷愳㈱愱户㘱㐹〲㌵捣㐰摦㐵㕢〲扤摥ㄹ攸㔲〶晡扥㍤摣㔱〷晡㠱摤㌳㔳愰㍣ㄵ㥤㍢改㥤㥡挳捥㕥戱攵收扢摥愹昹㡦㜳户敤戹收晤扦搴愸㡦搰搳㉢搰㙢㌳〵㝡㡤㈵㜰㍦〲ㄲ晡ㄸ㤶㈴搰㍥㌳搰㑦搱㤶㐰㌷㍡〳㡤㌱搰㍤昶㜰㐷ㅤ攸㕥扢㘷愶㐰攵㝢昳摣扤㌵㌹搷っ扥㌴㔸戳慦挶っ㍣慢㔶㜱㝢攱ㄵ攸㔵㤹〲扤搲ㄲ戸ㅦ昵〸㜱㐳㈲㠱づ㤸㠱㜲㔷㈱㠱㕥攱っ㜴㌵戸攳戹㕦昸㙡㤷㠰摣㘴㐸捦㑣㠱㘶扣㘰攰㙥挳㉢搰㜵㤹〲晤て㑢㤰昶㐸〷昷㈷晢㝢愴挳昱㍦㔰挶㘳㌶晤ㄱ㘶攳昳㈲㈶㥢㕢ち晣愴ㄳ敤敤㤵㕦㐳昲㜱昷㜵ㅣ晦㠵愴ㄹてㅡ攰㥥㙢㍣㝣㙥愵晢昱〰〲㙦㘶戵敦敦搵搲㘲攷㐰愴㌵㡥ㅢ㝥挷㐴㥡ㄲ㜸㐰愴㈷ㄷ晦㐵㈱㤹挴扦㤱晢㔷戸㌵ㅢ扦㑦㔹〹ㅢ昳愶㙣捦㥦㠶昸㥢捦〸㜷捤て攳㘱晦㜳㤱㉣摥戴晤搵㥥ㄵ〹㕣㠰昹㜲晥㤸搹攳㜸ㄴ㈱㐷慤挵㌴㥢㝢攳㡢㝤晢捣〳㉦ぢ戹㈱慥戳㡢㐱昸ㅦ〲㘴㥦つㄲ搴㤷㠰㈳㍦ㄳち昱昹戹㜳㜳〷挸ㅦ散㘶攳㜸昴戹晥㑤㐸㕥㥥晤㠳ㅡ扤㈸㙥㤴戸㤲〲㤷㠲㘴ㅥ摥昹㥥挳㕢㠷㍥㥡挳ㅢㅥ摡㌷挸攲㉦㤸收搰ㄴ昷㕡ㅣ㥥㕤搴戱㘸㠸挳昵㤴㌸ㅥ捤㐸挵㘳㤵愷挳㙦愲㡦换攱㔵㘴㌹ㅣ㜲捦㤳攲㤰ㅢ〷㜱戸㠱㤲㡣づ㔷㝡㍡晣㑦㕡㕦换挱㜳搳㉣攰㕦㑤㤶挳㈱昷ㅥ㈹づ换挱㄰㠷搷㔲㤲搱攱㜲㑦㠷摦愵昵㔴㐸慦㈳换攱戰㤲㘶昱戶㡢攲㠵戴㌸扣㠱㤲㡣づ㝢㍣ㅤ摥㠴㍥㉥㠷户㤰攵㜰㔸㐳戳㜸摢㐵㌵愲㈱づ扦㑦㐹㐶㠷㕦昷㜴㜸㍢晡戸ㅣ摥㐹㤶挳㈱慦㠹㔳ㅣ昲挲㔲ㅣ摥㐵㐹㐶㠷㘷㝢㍡扣㥢搶㔳㈱扤㤷㉣㠷㐳㕥㥢愶㌸㕣〰㠶㌸晣㉦㑡㌲㍡㙣昳㜴㜸㍦慤愷㉥㥡ㅦ㤳攵㜰㜸ㄶ捤攲㙤ㄷ㜵づㅡ攲昰㐱㑡㌲㍡㙣昶㜴戸ㄹ㝤㕣づㅦ㈲换攱戰㤳㘶昱戶㡢㌲搰㄰㠷㡦㔰㤲搱攱㙣㑦㠷㡦愱㡦ぢ搲㥦㤲攵㜰戸㤴㘶昱戶㡢敡㐳㐳ㅣ㍥㐹㐹㐶㠷戵㥥づ㝦㡥㍥㉥㠷㑦㤳攵㜰ㄸ愳㔹扣敤愲〶搰㄰㠷捦㔲㤲搱攱っ㑦㠷扦㐰ㅦㄷ愴扦㈴换攱㜰㌵捤攲㙤ㄷ晦㐵㘸㝣改慦ㄳ㥥㑦㈶攲㡢搷晡㜷挳㝣愴㘹㕡㉦晦搹戰搷ㄳ㌲愹㑦㤰扤〰㍦㡡摦〱戴愱户㕡ㄵ㌶搴㍡㌴㌸っ晤㉢㜲扦㘱㠹昴㡢㔶㐵㜴㜸ㄲㄵ㥤㤷挸扤捡搶㜹搹愹挳昳㥥攸晣㥡㕣㥥昲挴搷㉢㑥㥤敦摡㍡慦㤲换戳㤴攸晣挶愹挳戳㡢搸㜹㡤摣㕢㙣㥤摦㍡㜵㜸㐲㄰㥤摦㤱换㜳㠱搸㜹摤愹挳㘳㔸㜴㝥㑦㉥て㕦搱㜹挳愹挳挳㑥㜴摥㈴㤷㐷㥣攸㙣㜳敡㙣戶㜵晥㐰敥㐳戶捥ㅦ㥤㍡㕣摣㘲攷㑦攴㜲㕤㡢㥤户㥣㍡㕣㡦愲戳㥤㕣㉥㐵搱搹攱搴攱ㄲㄲ㥤㍦㤳换搵㈳㍡㍢㥤㍡㌲㤵㥣挵户挱戵㑢㠸㔳㉡搷戰敦愰㌲㌶㕢挹㘴愶㘹㜱㔲㐵敢㉦愶㤶㑣㘷㥡ㄶ愷㔵戴摥㌳戵㘴㐲愹昵㍥摡㜶〹㜱㘲㐵敢〳㔳㑢愶㤴㕡㈹攳攲搴㡡搶㕦㑤㉤㤹搴㌴㉤㑥慥㘸㝤㘸㙡挹戴愶㘹㜱㝡㐵敢㈳㔳㑢㈶㌶㑤㡢ㄳ㉣㕡晦㌰戵㘴㙡愹㤵㌲㝡㑥戱㘸敤㌲戵㘴㜲搳戴㌸挹愲戵摢搴㤲改㑤昳挸㘹ㄶ慤捦㑣㉤㤹攰㌴㉤㑥戴㘸敤㌵戵㘴㡡搳㍣㜲慡㐵敢ぢ搱ち搹㘰㉡捥慢㙣㑡ㄴ㑥㍥敦攱㍤ぢ㝤㜳㤵㑦㜱㉡㐵攰㜳〹㌸㝢㈲搸户㈷愵㐷挸〶㐲㜱收㐴攳㡢㔴つ挵挹ㄲ挱攷㉥〱攷㐷〴㝢㕤〲㑥㠹〸昶戸〴㥣〵ㄱ㝣收ㄲ㄰㜸ㄱ㝣敡ㄲ㄰㙢ㄱ散㜶〹〸慦〸㍥㜱〹㠸愸〸㜶戹〴〴㔱〴ㅦ愷ち昲晥ㅦ昹㍡㝡㍦ | C27: 㜸〱捤㕡㝤㜰ㅢ挷㜵挷㠲戸㈳ㄶ㈴㈵挴㤲敤捡戲㘳㑡戶㉡㍢㤴㘰㠰〰〸搰慥㙣昰㐳㤴㔴换㤲㉣㔲㜲愷㙤㠲ㅥ㠹㠳㜸㈲㠰㘳敥㐰㡡昴㑣挶ㅦ㔱㥡㌴攳㈴㙥㥡㌴㥥㌸㙥㘳㈷捤㈴㡥ㄳ㈷㙤㈶ㅦ捤㠷㤳㕡敤㑣晦㘸攲㜶摣愶㜱㤳挶㐹㘷㍣昶㑣㔳换搳㜱挶㙥㘷愲晥㝥㝢㜷㈴扥㐸㝤挴㥤昱㑡㜸昷㜶昷敤摢㝤㙦昷摥晥㜶㡦㈱ㄱち㠵捥㈱昱挹ㄴ㈱㜳昵攴戲㕢㌷慢㠹㌱扢㔲㌱㘷敡㤶㕤㜳ㄳ㈳㡥㘳㉣ㅦ戴摣㝡ㄷ〴昴愲㠵㝡㔷㉢扡搶摤㘶戴戸㘸㍡㉥㠴戴㔰㈸ㅡ㤵㘱㙡昱㝦昱㈰㈳搹㑡戲㔸㐲㉡㈴㜵㤰摥㙥㤰愹戱搱挳搳㈷搱挹㘴摤㜶捣㕤晤挷㍤㔵㝢㔲愹㐴㉡㤱捥愴㠶ㄳ挹㕤晤㘳ぢ㤵晡㠲㘳敥愹㤹ぢ㜵挷愸散敡㍦戲㌰㕤戱㘶㙥㌷㤷愷散㌹戳戶挷㥣㑥愶愷㡤㑣㍥㤵挹㘶换挳挳昹摥㈸㌴ㅦㅡㅢ㍤攲㤸㘵昷㡤搲㈹愹昳昰搸㘸攲㤰㔹㝦愳㜴挶愰ㄳ㉡挷敤慡㘱搵摥㈰愵ㅡ㕤㥤ㅤ㌷㘷㉣捥㠹㘹㍡㔶敤㐴〲挳㙥㜲㌴㜲戹挴㠸敢㉥㔴攷㌹扤㘳㘶愵㜲搴㉣搳㙤戲㍡敥搶㡦ㄸ㑥搵敤慤搲㝦愶㘳搶㘶㑣㜷㐳㜵敦搲㡣㔹昱〵摤㘸昵戸攱ㅣ㌲慡㘶㠴捣挶慡㌷㠷〷㑡㘶慤㙥搵㤷晢慡挷㕣昳愸㔱㍢㘱㔲㐴慢敥㕢戰㑡㈲ㄲ挱晦㔰搷捥㑥㈳㔳ㄳ㠵昱㔴挷㘶つ愷慥㜲ㅣ㑢慡㤳㙣挳㜲㔱㔶㌴㡤㡢㑢慡扦愵ㄵ攷㙣搲慡摥㙥㍡㌵戳挲㑥㌸㤳〳㉤㐲捡㐱摥㍣慣㜸㉡㌰㠷戳㈴㝡晣㜷㠲戶戰ㄷ扤〷攴搸㤴㘳挱捣㠵㡡攱散扡挳慡敤ㄹ㑡㈵㜲㠳改挱摣㜰㈶㤹ㅡ㑡㘶㔳㠳㐳扢づ㕡㜳㘶挵㌲摤晡㥥愱㝣㈲㡢㈵㍡㤸捡㘶㜳改昴㜰㜲㌰户敢づ㘳㘹㑦㉥㥢挸愴㠷戳㐳改㕣㉡㥤捣つづて收㘵㉦㔴换㍥㜶戲〱愴晢戸㕤㌲晡㡦㑤捡㡤㉣㡥㠳㠸挸换㜸㘵ㅢ㐷挴挱㠴㡢㐶戸㌸ㅤ㉥捥㠴㡢愵㜰搱っㄷ换攱攲㠹㜰㜱㌶㕣戴挲挵㤳攱攲ㅣ㘴㠲ㄴ敤敥づ晢㘹搳〳㕦㝢攴㠹ㅢ换〷㥥ㅡ摦扤晣㡦㔳ㅢ晥㕤昰㉤㔵㉦昹㘵㘰㈶㕢㉣捣攴㜲㠹㘴㌶㥦捣攵㔳㌰㘴㘸㈸㤹㘹戰㌰㥢㑥㈶㤲㐳㤹㙣㍡㌵㤸ㄹ㑡攵㌳搹㐱㘵㘱㌶㥦㑥㈴㜳挹攱㝣㈶㥤㑢收㤳㘹戹〹㡡攵㘶㄰晤㜲㤰搸ㄱ晢㙥戳㙡捥搱挴㉢㔸㜳㈵㠸㄰㉦挲㐴㥡㌹晦散㌷戴捣挷晦㝡昴晤㔷摥昸㍦㜷敦扣晣㌱挱〰愲挶户〵㑣愲㘵㝣挳㐹愴㠶㈱㜹㜹晡㜹㤸慣扣㡡ㅤ㙣〵搱慦〶戹攲㠸㝤搲晡摢㐷敢㘷ㅥ慥㍤晤㠵晥改㠵㤲扤戸捣㘱㕣㐳愹户㠲〸昱㌳㝦ㄸㅦ晡捥㌳慦㙣㝦㌴㝢昰换㍦晦晥㑦㙥㕢摥昲㙥挱㄰愶㠶搱て愶㜵㈱愴㠷ㄳ昹挱㔴㘶〸昶づて愶㠶㠶㜲搹㠶㌱㘵㌲〹昸㈷㤹换㘴㌳改㙣㉥㤳捣㝢㙥捡攴ㄳ㤰ㅦ捡愷㠶㠷㜳挳改㔴㈶㍦㉣户㐱戵摣づ愲㕦㐷㙥捣慣ㄹ晤㔳搶攱㐱㜹㍤戳㍢㐰㠴㜸捥ㅦ攰㡦慡て㡤㘷㘶慦㉤㝣㘲晦㘹昷攵㜷捣㍤搸扢ㄳ搵㜷晡慢㜶摣㌱㑥㈱づ慣㠶㤸挱〴愶敡㐲㘲㉢㐲㙢㌹㕢捥㤵㔳愹㔲㌶㘹愴つ㡤㡢昳㐲㕦㘲㉥搶摥昲㕤㔶慤㘴㥦㔲㙦昵搵愳㠶㙢慥扥攴〳㝥摤愸扤㔰㉢戹㕢㍢㔷㑥搶㡤扡㜹㔵㙢摤慡㤲戶㘶㤳㠸㜹愶慢晡㝢㙢㙢戳攳㐶㘵挱ㅣ㔹戲扣敡㙢㕡慡ㄱ昱散改戵㙢㈷ㅣ昳㥤㉢戵㙤㈳ㅡ挱㑥戹愸㜴户㔹改㔵㜹攳敡ㅦ㥢戵㕤戳愶㠶㌷㔰㍤㘲捤捣㤹捥愴挹㝤搶㉣㈹㔳㉦㘷㤵ㅦ㜶〷づ搷㘰㈸〲㘹㘹㝢㘳㘹㜹敦㔲摤慣㤵捣ㄲ挶㍢㙦㍡昵攵㈹㘳扡㘲㕥搱㈴攲昵㠹㡡㉤㑤挵ㄳ昶捣㠲㍢㘶搷敡㡥㕤㘹慥ㄹ㈹㉤ㅡ〸昵愵㍢散㤲㠹㐸ㅤ㘱ち㠹㔰㔷㤷㄰愱户㜵ち㤷搴敢㈶搴㐴㌴㑣㌱〳昷㙦㌴㉦扢挴㔱㔸〷㉢㉡㈶搷㘴昸晡昳㈸㔳㝡愹收挶戵〵ㅢ㙣㈲㈸愱昴つ㙢㑢慢㌱慥捣摣晦慦㜰㌸扣挹户㝥敦㈲戶挳晤㐶慤㔴㌱㥤㜵㈱㤵攰㠸攴つ㈰摡て昱㌶慦改㍤㐶㘶戱㈴㤶戵㔳㔶愹㍥慢捦㥡搶㠹搹㍡捡〰扢愲㔱扡戶㉤挹户愱㐸づ㤰散〲㠹挵㐲晡㙥ち改㌱㤹昰昲ㅡ昷㤹㡢摦㘸〹散愴摡搸㠱挲㕣慤㍡㘱㍢㙥㔷㔷㈷㉢昷ㅢ敥㙣㥤换㜳摤捡㙥敡扢㠹㈴〹愲㜱慢㍢敦㍥㑥愱〸攱㑡㕦㜵摣㉣ㅢ〰㠹敡敤ㄶ㠶㔶昵㜰挷戸改捥㐸〲㤴〳㜸㔷㤶㜴㜰㜸昹㝢慢㕣晤收㔲㝤摣愸ㅢ摤㔵㐰ㅤ捣㤲㠴搰㠰㙡攵㜱㙣搹愷捡㠲搶㌱㍦〷つ㜱挵㌶㘸改㔱〵㥥㈶扣㌸㜸㕦㐲㕤㍥㕤摦〸㡣㥤㘰㐴㙦㕤攸捤㤰〵㐸慡戴捦慣㑤㉤捦㥢㉥挵愳晡扡慥㙣㝤扤愸散昰捣昴戱扡㔵㜱ㄳㄸ改㍥挷㕥㤸㝦㈳昵㔰㤷㑣㠱〴㐹晢㍥㔶昱㠵摢挴㈳㐷昷㈲攷愶㔸っ㐵愹㡤㈵㤲搸㐷㜲戵㐲搹㌹㍣㔴㤲㔹㍣㘲敢搵㘹摣㜴㉥〶摥ㄱ㑦昴㔶攱愱㈹挷㔴㠰㌵慡㌲昰㜶㕦昵㉥摢㤹㥢戶敤㌹慥愷つ㉡攷捥㥡㘶㥤㈰戰挷〷扤ち摣ち搱搵搵㠴挷ㅡ搰㈲攱愳㍥っ搲㌷㔲愹昴〷ㅡ㕤晤㘶ㄴ㜵〱㡥敡户㠰搹戲㜷捥慥搹㔵㙢捥㈸㉥收㡡㠰慢挵㠳㘳㘳㠹愵㡡㕢ㄵ㘷㘰㍥㠱㔰昹挸㍦㝤㜳攴㔴昵搰〷晥晢捣慤慦扤晡慤㈱昱戴㕦搱㠶攰㠸慦ㄴ㠶扣ㄵ㡣昸ㅥ挴ㄸ㔶挰㌷㈷㔹㐰㕥㡥㤰㡣㠲㈰㌸㈸㜷㈳㌶㡣㝢㔹㐱㡣挶昸㈰昷㤲㑣㠰〸㈲㌴〵㐴昷㠱〹㤲昸㍡昴㜳搲搵挴ㄱ搴戵㑦摣敤㈸㡤挹㜵敡〴㜱ㅦ㈷㑦搲㔹㤲敥㤱㜴㡤昸㈲ㄴ㜷㜴挰ㄷ晣㡡㌶㠸㐸㤴愷ㅣ㌰挵昶㥦㠷㔸㘷〷ㅣ㘷ㅦ㜷㤱晣づ㐸㠳〳㝥搷换ち㈲㐵攵㠰摦愳搰敦㠳〸㘲㐳攵㠰户㠳〹㤲㜸っ㝤慣㌸㠰搰戲摤〱〶㑡㘳㜲㥤㍡㐱挴搹挹〱て慤攵㠰㡦昹ㄵ㙤攰㜴ㅢ㌴㈹〷㥣〴㈳㍥扡愶〳㉡愸㤶㔵㤲ㅡ㐸㠳〳收扤慣㈰昸㔴づ㜸㈷㠵ㅣ㄰㐱散愹ㅣ攰㠲〹㤲㜸愰搱〱ち慤敥㐶ㅤち㔷搶㥤㍣㠵㠲㤸㕣愷㑥㄰搱㜶㜲挰晤㔰搳㜱〵摣攷㔷戴㠲㕦㡤㥢改㐵㠰㤶ㅥ㠸换昲㜱换㍣挵㈸扢愱㡣昳敢搸㠲㕢户搵㤶搰㔷ㅥ户て搹昵㜱换㥤慦ㄸ换㥢捡㍥㜳搷慣㔹〳㘰㜳㠰摢㕡捡散昹㜹戳㈴换㤳昶㠲㌳㘳ㅥㄸ㝦㌳〰㍡搸㠷愹㔳㔸㉥㉣㤰㉥つ愳攰戸㈱戰㑡㤰㐲ㅡ㤱㐵敢㔶愳㑥搱つ戰㔰戱㥣搰㡤慢ㅥ㥤戲敡ㄵ戳愷慣㈰㤹攲愳㘵㜸ㄱ㈸戸搴㕤㥥㥡㐵〸ㅥ敦㉢敦㜳慣㔲挵慡㤹㥣㡣捤㥥攸㐱昳〴㄰敦ㄱ摢戵㜸㘱搱㔷㥥㜲㡣㥡㍢捦捤㝢㘶昹戲愶㥣摡攵戵昲愸㔵㜳搱㡤㥡㐵昲ㅢ换㤳戳昶㈹㕣㘹㉤㔴㙢晢㡣㜹昷㑤㌱㉢㡣㤷㕥㔲㔳㈳挲㈲ㅣㄶ搱㜰昴㔲攷㐷扦ㄷ摡慥㕣㍤ㄳ昷㘳慤搶ㅤ㙢㝡㠱㑥㔳ㅤつ㠲㐶㐸搴㍣㠶㌴㘲挳搶慤扡㘱ㅡ㕢㜰㌶挷摢㜴㉦搴ㄱ昲慤摣ㄵ㉡㕣㝢ㅦ摢摣て昲摢晢㡥ㅤ㔸㍤㠱晥㕡㌷㝣摡㉥攸扢㘰挰捦㑤㘷㠳户㡣㜸〸攰慡挲摢㠹搵挰㕣敢搲㡣㤵㤵っ㔷改㠶㔵㜶〲㤸戱户㝣搰㤸㌶㉢㠰扡㔵愳扥挱换昰捣㔱㌵㉡慥㕦㌷㘶㔷慢〶㤷ㅤ敦戱㈶㘷㡣㡡ㄹ㉤㡦㉣搴㙤㕣づ挹㌲㠸㕡㥢㝥㤱戱㠴㈲㘳挹〳愵攵愳㍣〲㉢㥥扡散ㄳ㠶㘳搵㘷慢搶㑣㤴ㄹㅥ㔳摦ㄴ敢ㄵ㌱㠴㠷㤰㈰〵昱愴ㄵ攵㝡㔸ㄳ搳㥤挰挱㤰慥攳昴㘳㔵㠷㠵㡥㝦攲ㄲ㑦㐸㠸㍥㙡㔷㤵愷愱㑤ぢ㠳㌰ㅣ愹㜴㌶戸挰㍥㝢て㑡㔴㠰ㄲ㍣攰戰㕡扥挷㘷㤸㠹摣〴戲㉥㝣收㐹㈴㜶搰㌶㑡ㄳ挶っ敥愴扢晤ㅢ改㈸愶㤶攱挶㠹昳㐰㌳㠶㌳㌲捥摥㡢㔶挹㜴愲㉣㤸挴㐵㜸㠴㐷㈱摤㥢㐳㐰扢慥㤰愶昵㐴㍢昵㜵㈰搰㜵扤てㄳㅢ㉦摡て戴改晦捦㍢昳户㘱㔰㌰㑢㙤㔳㝦〸㔶扥ㄷ㐴㈴㐱㘸㑦㡢挰晢㈸昰㐷㈰ㅡ㐱㜹敢摣㌴㥦㉤晣ㄳ㐸㐴摤攵昲搴ㄳ挵〹㐱ㅤ㤷㌴㘵㐸㑦挳㌱㐷昷㑥㌸搱攰㠲㔸㥦挴㉡㌷㑢㌱㉦挶昲㌸挵改〸㠷㈳㤸㙡扤昵㡡愸慤㕢㈸慢㑥㥡敡晣㈳㠸昹昵昷㠳昴昰㘵㠱晥攲晥挱挱㌶〴ㄵ㡢挹〷㈰ㄳ㡡〹ㅥ〲〲挳㜹㑣昰㍤昳〱戰昲㠳㈰㠲挰㤷㄰愰㘱挳ㄲ〵㘴戹㘹㠵昴て㠱㕣㑣㤰ㄴ㈳㘸挰㐰㈹ㅦ〴ㄱ愳㈰㡣㍦㉢敢昱挳攰捦扦ㅥ〹慡搵㝡晣ㄳ㥦㘱㐶㄰㔹〷愶㠰つ㑣昹〸㔸昹㔱㄰㐱搴摤㐱攰㑦㈹昰㌱ち㄰㠸㜳愲昵㠷㐰ㅡㅣ㤸改攴挰㡦㐳〶づ扣ㅤ㌴㔰摡攰挰㠷㔱㉣㍦〱㈲〸㥣㕢ㅤ㐸戴散㌹昰ㄱ㜰ㄷ攵㐰㘲㙣攵挰㍦〳㈳〸戶㥢ㅣ昸㐹ㄴ㥣摦㠱〴攵捡㠱㡦晡㡣㜲㈰㤱㜹㘰ち搸挰㠱㡦㠱㤵㥦〲ㄱ㐴敤ㅤ〴㍥㑤㠱扦愰〰㠱扣㜲攰㘷挰㙣つ㔶㘰㠷慢攱㑥づ晤㉣摡挰愱〶㘸搰㐹㠳㐳㍦㠷㘲昹㌸㠸㌸〹搲敡搰ち捡㍣㠷㝥ㅥ摣㐵㌹㤴㤸㕤㌹昴〹㌰愲〶搲攴搰㉦愲攰晣づ㥤㘷㕢晣攴㤳㍥愳ㅣ㑡愴ㅦ㤸〲㌶㜰攸㤷挰捡㉦㠳〸㥥〲㍡〸晣㈵〵晥㡡〲㍣ㄸ㈸㠷㝥〵㑣㙦攰㔰摥㕥㜷昲攰㔷㈱〴て昲㜴㄰㘸㙤昰攰搷㔰㉣扦づ㈲敥㈳㘱敥ㅢ㍥搳㠵愷挶扤愰㌵挴戵㙤㍦ㄱ〸挵捡摣㠸㈶敢换ㄵ㙣晥㘴ㄹ昲㍣㡥挱摢慢㐶㈰戶ㅤ㝣〳㡤戴摥挱慤戴摤〹㔵㍤㥢㕢敥㌷㔵㌳搶㜰㥦搳㈶㜰㈸㔹戳㍤㉤㔸扤散㘰ㅢ㈶晤㥢㈰㥢敦戰㘶ㅣ摢戵换昵晥㐹㠰摢㝥摥ㄷ㤷㐳愱攴㠸㌶づ㡤ㅤ晢愴㘱㤱ㅡ㍦戲㉤昲晥㈴㌶㔷戳㑦搵搴㘸㌴㤷搷收捡㕦摤摤散㈶㠶㥦㑡搷挱㡢㜱敥㠹㙣㉣扦つ搲搷ㄵ攷愶挲ㄴ㝦慦昷っ挵摦ㄷ㌰摣㐹㤸戴〷㐰㉥㌴慣㔳户㤸ㄶ㌳愲㈴捣㐸㜷户搸搱㜲㌹摢戶ㅤ慣摣㙥改㍡㜷〳㙤ㄴ㈶㕦㔸愳㘶㡦戲㌱愱㠱㝣㡡攴扢㈰戱㌸昷〵づ㐸晦ㅥ挸㠶戱搱㘲〳慡搵晦〶㘵㙦㐱㔹昳㈷㑣晤㘹ㄴ昷愲㔸敤㠲昸㌶敡敡㘷㔰㜲ㄹ㑡㜰㘵ㄳ㕣攲㜰〹挵㍦㠸㜲攵捡㕥㌰昲敦㐸晡㐸㙥〱ㄱ㙡挳㘰敥敦㤹挳㡦㡢㔶㜰挳㌸㑤㘶〸㔶㜲戹㠰て㐹慥〱㑥户挸愰㠴㔳摥㍣㘵摣㌶㔴㍦晦〰〶㔳挶㉤㠲㈹捥㙤㠲㈹捥㍤㠱㈹捥㝤㠱㐹㌰摣㜳摡挴㈰搴搱愵捡㌵㍦㐰㠹㝣〶㈴ㄶ㝦ㄸ㔴㈹愵㙢㈴㝤㈱㘹戹㍣〳ㄲ攷㑥愰㉡㌷戱攸㕦㐸㌶㤳㈸换㔴㈴㘷敥㐷㈰㉢㤶㝤ㄲ㤹搳㉣昸㑤㜴搶㙥搹昵㈸㙤户散㔱㌴㔰晤晣〴っ㉣㝢って愶昸愷扣㘷㈸晥改㠰㘱挰㘶ㄲ㡣扢捡戲敤㡤㤶晤ㄴ愵昲㜹㤰㔸晣㜳愰㑡㘹㈷换ㅥて㉡慦〲㈳㕦㈰搹㑡愲㉣㝢〲ㅣつ㤲㉦昹㡣㥡㌳㠶㔴㘵搹ㄵㅤ㉤摢摣搱戲㈷搱㐸つ攲ㄷ㘰㘰ㄹ㠳㈸㔳㥣㠱㤴㈹捥愸挹ㄴ㘷攴㘴ㄲ㡣㠷捡戲换ㅡ㉤㝢ㄹ愵昲㉣㐸㉣捥㤰戸愶㘵っ㤵慡㜲ㅢㅢ晣㤲㘴㍢〹㉤㡢㌳㜲慡捡搷挱昴㜵㘹㝣昹㙦㘹㜹㌳㍢ㅦ晥〶㕡扦㌸敤挵ㄷ愴㘵慥愶㉥愰㕥て㉢㐶挲㌷㕦㥡㉥扥晢㔱愸攲㑦搳㘱昵慦愱㠷ㄳ户ㅡ㕦愹昱㕡晣攴晦㠲㙣㘴㐸搰晤ㅦㅥ㐱㍡㝢㥢捦ㄵ扣㘷搴㝦挶晤攷收挲挶敦愲㐶戵㝣扢搸昶攱ㄱ敤昹㝢晥晣㤵挷㙦搹昱挸㤳攷晣攷㍤捦晤慣㌸昷㤱ㅦㅦ㉡㉣扦敢改昰搰㡥㍢ぢ㕡散㠷㍦搸昶攳愳〵挱㜸㄰挷慦昵㔲㔳挰捣㡥㔷㕡扣㌳㘳㐵敢慤㙥㥣ㄱ㐴㑤ㅥ㔱㜶㕦㤷㘰ㄸ攰〴㡡㕦晤敡摣㌹㝡㑤ㄹ摡㠵捡㡤㝣挱㉦捤㔰㐶㠵㜵つ㝤戶㘷昲㍦㝥昱捣扢ち㡢户扤㝡挳改〷敦㉤㠴㕦㉦晣挱ㅦ攷敦㉦〸㠶㠷㑥㠶扥㡥搱㜵㌴昴㌵扦愲昵昶㌶捥㠰愲っ㤵㥥愱㡣ち捡搰㕦㌶ㅡ摡㐳㐳㝦ㅡっㄷ捦㠶㜴〱㌳晡㍣挴搷㌵㔴愹㝢晤搵㐲攳昳摥㠱搷ち攲〵㤴㜴㌲昴㤵戵っ㍤敢㔷戴摥搲挶ㄹ㕦㤴愱㙦昱っ㘵㤰㔰㠶晥㔷愳愱㥢㘸㈸㕦晦㑢㥢搱戳㐱换戵㤶敥㝢ㄶ捤㝦摥昱搲㔸攱㑢敦晥昹㍢敥戹㜶愲昰㙦てㄶ㕦晣搷㘳晢ぢ㠲挱愳㤳愱㉦慤㘵攸㡢㝥㐵摢㙤㉣挳捤昹㙥㘳ㅢ扥摡㙦㠴戸㔶收收摡㔳昶㡡ㄹ㈱㠰搰慣㑡㐵㠱㥢㕥㕣㥣㌸昸㙥㝥㄰㜷㠴戸㉥挱攷ㄲ㝦昷挶摤㈱捦愱挱搱㕣慡ㅣㅢ敢攵挳づ捥敡摤攵〳㉥敥㜶㑢㔱㝣昷慢搷昱ㄷ㐱㙦㠶㕢ㄵ挰捤〸㈳㈹敦っ昰㙥㠷㍢㈲㍤㐲戸㜵㉥扣㔶晤ㄱ㝣づて昳扥攵搲慥㜹昵㉤㔸㜲㡤挷㤱㔲挳㉤㘲㐴扣㠰㘹昶㌶昱㝢㐳攷搴戸㠱戸攴㔶戴搱慦〶攱㌷㉤戵㝦㠲挴攴㌵㈸㔱愸㕦㤱㤰挶㐰摣㙡㈰昱昷〴㍤搰昲㘱扢愷㈷挰挷散㐵㕤昶㜰㈵改搷慥㍢扣攷㍢づ㙦ㅢ挷挱攱慤づ敤扡收愱〹㠶㑥づ㉦㐸㠲昱㐷㜵戸〳捣摡晥㜸慥㘳㠷㍢愹扤戹挳ㅢ㔹戴ㅢ敡㍤㕦〸㠶戰愶づㄹ〷㔴㠷〳㘰搶敥昰搹㡥ㅤ敥愶昶收づ㙦㘲㔱㐳㠷っ㈵㡤ㅤ㙡㥣戴ぢ㕥㔵㤰つ㙤挲晢攷晦㑤㈸㉦㈵〷㉡晣㡢搰㑥㜷㕣捤㜷挰㈹戴ㄵ㕣ち搴㈱〷㝤㠶ㄹ挱㠹攱㌰㘴㥡愵㥣ㄳ晣て挹㡣捦㌰㈳攸㑢㈵㤳㘵㈹摤挸㘲㌹攴㌳捣〸㥡慦㘴㜲㉣愵攵㉣㤶㜹㥦㘱㐶愸㘱戰㜴㤸㔹㍦挵㌹ㅣㄵ㠶㙦〶㠳㡤㔵つ〴㤵捤㔲ㅣ㤰㤲晡㉤㑦㑡つ愵㑤㡡㐳㔲㔲户㝡㔲㙡㌰㙤㔲ㅣ㤴㤲㉡㈸愹㜸㌰ㅣ挱ㄱ愸ㅤ攰㈹㑣㌱昷昴㔱戴㡤㡡㤰㘰愷慡攲㍢㉤ㄵ散㐷㔵㝣扢愵㠲慡㔵挵户㥡㉢㝡晥て㈰㤱㥡捡 | D27: 㜸〱捤㕡㝤㡣㕣㔷㜵㥦㍢㍢敦敤扣搹㕤敦挴㜶㐲ㅣ㑣㌲㠵㌸〴㙣㐶㍢㌳㍢㍢扢〹慥㜷㜷搶㜶ㅣ慦敤挵扢㑥㐴慡㜶昲㜶收㍥敦换捥㥢户扣昷㘶㍦〲㌴ㄱ㄰愸㐲㔱㔴㐲㐹㔵㈹㈵ㄴ晡㑦愴愸慡㐸改㜷㔳〹愱〸〱敡㍦㑤扦㄰㌲戴㙡㈱㐰㤱㐱攱㡦ち㠹昰晢摤昷挶㍢㕦扢晥㈰㐸戹昶㥣㌹昷敢摣㝢捥戹昷摣摦扤戳㌱ㄱ㡢挵㕥㐷攲㌷㔳㠲捣挱挵㉤㍦㤰㑥戶散搶敢戲ㅡ搸㙥挳捦捥㜸㥥戹㌵㙦晢挱〰ㅡ攸ㄵㅢ昵扥㔶昱敤㐷㘵戲戲㉥㍤ㅦ㡤戴㔸㉣㤹㌴攲愸㘷ㅢ㝥搲慤㡣挱㥣㤱㈰㐱慢搸戰づ戲㔴㥥㍤户晣〸攴㉦〶慥㈷㡦㘴ㅥ〸愵ㅣ捤攵戲戹㙣㘱㍣㌷㤵ㅤ㍢㤲㈹㌷敢㐱搳㤳㐷ㅢ戲ㄹ㜸㘶晤㐸㘶愱戹㕣户慢愷攵搶㤲扢㉡ㅢ㐷攵昲㔸㘱搹ㅣ㥦捣㡤ㄷ㡢搶搴搴攴昰㈰㈴㥦㉤捦㉥㜸搲昲摦㈸㤹㐹捡㍣㔷㥥捤㥥㤵挱ㅢ㈵搳㠰㑣㠸㥣㜳ㅤ搳㙥扣㐱㐲㌵㕡戹㌸㈷慢㌶摤㈱愵㘷㌷㉥㘶㌱敤づ㐳㈳㔷捡捥昸㝥搳㔹愳㘷换戲㕥㍦㉦㉤慡㘸㌸㜳㝥戰㘰㝡㡥㍦散搰㝥搲㤳㡤慡昴昷㌸挷㌷慢戲ㅥ㌵昴㤳捥〳愶㜷搶㜴㘴㠲捣愸ㄳ晡昰㔴㑤㌶〲㍢搸ㅡ㜱㉥昸昲扣搹戸㈸搹㐴㜳㑥㌶敤㥡㐸㈴昰㍦㌶昰捥㝥㌳㔳㡥挲㝣㥣昲㡡改〵㉡㐷ㄷ收晡戵㙤㕢㉥㑡㡢㡥㜹㜱㐹㘵扡㝡搱㘷㡢戶㜳㕡㝡つ㔹攷㈰㔴昳㜰㔷㈳㘵愰搰て㔷㉣搵㔲㠷㕥ㄲ㐳搱㜶愰㉥ㅣ㐵㑦㠱㕣㔸昲㙣愸搹慣㥢摥㤱㌳㜶攳攸挴㐴慥㤰㉤㑥ㄵ㡡㤳ㄳ㔳攴ぢ攳㐷收敤㔵㔹户愵ㅦㅣ㉤ㄵ挶㈷戳攳㠵㔲㈱㌷㌹㔹捣攵㡢㔳戹㈳㘷捣捤愳㤳㘳㤳㠵㙣㝥㌲㌷㔶ㅣ㉢ㄵ㈶ち㤳攳㈵㘳〸愲㡤㘱づ㌲〲㤲㕡㜰ㅦ㤵㡥㕣捤㕣㌸㙤散㘱捤㈸㠸㐸㕣挶㠶㙤㥦ㄴ㍢挵㉢㘶扣戲ㅣ慦㔴攳㤵㕡扣㈲攳ㄵ㉢㕥戹ㄸ慦慣挴㉢㜶扣昲㐸扣戲㡡㌶慤㤴ㅣㅣ㡣㐷改慦㥦昸散挱扦㍢昴搰捣ぢ㑦摤㍦㜲搷㉦ㄶ㕥ㄳ摣愳㕣㐶晡㑤㈰扦搵愵攴㔸㜶慣㌰㤶㠷㙥愵㝣㈱㔷㤸捡㑦㑥ㄵ昲㙤㙡戲扡㔰㥣捡㤷挶㑢㘳戹攲㜸㘹愲愵㈸㉢㈶愶㡡昹戱㝣慥㤴㉢㡤攵挷昳㔰㜵㉦〶㌰昶㜱愸晤㈰㝢ㅥ㤲㑥攳㉢㉦㘴搶敡㕢つ慡㝢㌳㙢㙦〱ㄱ攲㔵愸㑢㤵㉦㝤收攵ㅦ㥦㥡昸摦昹㘷敥扤晣㔷㍦㜹㜹㘸慦㘰㈸㔱㜳扤ㄵ捣㘲搷㕣ぢ戹㙣㘹慣㤸换㤵ち㔳ㄸ㝣愲㤸㙦㜷㐸愱㤸捤攷㑢㔳㘳㤳昹㕣慥㤸㥢㉣㑣㠴づ㈹㑣㘶㑢挵戱㠹㈹昴挸㑦㘰㥥挶〱捥攲㌶㄰晤慤攴捡戲㘱㘶ㅥ昲捥攵㡤㠳捣扥つ㐴㠸晦㡡愶㌷㍡慢晤晦㑤晢㔷愶㥦晢捦摢慤扢㕥搴㤲挳㜷愰晡㝤搱摡㤹昳捣つ散挶敤㡤㥥捦挲㈸搷ㄲ攱㄰攰慣愲㔵戲㜲戹㕡㜱捣㉣㤸ㅡ扤㝤慤㕢㈹㡤戶挳搶㠳㜶愳收㙥愸扤㜵㜰搶昴攵昶㔶㍢ㅣ搵捤扡捤㐶捤㝦㙢晦捡挵挰っ攴㙤摤㜵摢㐲㝡扡㉤㈲昲㐸㕦㡤㜷㝢㜷户〷捣㝡㔳捥㙣摡㘱昵摢扡慡ㄱ㜷摣攵㥤㙢㑦㜸昲〳㔷㙡㝢㘶㌴㠳愳㙡㕤挹敥搱㌲慣ち攷㤵㈹慦戸扥㙣愸改ㅤ㜶ㄶ散敡慡昴ㄶ㈵て㍡㔹㔳慡摥捣慡㈸昸ㅤ㍥搷㠰愲〸㘷戵户户㤷㕡挷㌷〳搹愸挹ㅡ收扢㈶扤㘰㙢挹㕣慥换㕢㍡㥡㠴㘳愲攲㐰㐷昱〹户摡昴换㙥㈳昰摣㝡㘷捤㑣㙤摤㐴挰慤㥤㜱㙢ㄲ昱㌲挱ㄴㄳ戱㠱〱㈱㘲敦敥ㄷ戴㈸搷捦㉡㐷戴戹㤸攱昳搶捥㘵㤷㍤て敤愰㐵㕤㜲㑤挶敦扣㡡㌰㈵㤷㘲摥戵㜳挳㌶㥤㠸ち搸晡敥㥤㕢慢㌹㕥昱摣慦户㜱㍣扥㉦搲晥昸㍡づ愵晢捣㐶慤㉥扤㕤㌱㡤攰㡣㡣っ㠸㜶〹扢㜹㐷敢㌱㌸㡡㑤戱愵㙤搸戵㘰㐵㕦㤱昶挵㤵〰㘵挰㍤挹㈴㑤摢㤳㡣户愳挸㜸〷挹㥤㈰愹㔴㑣㍦挴㐶㝡捡戸㉢捣㙢㡣昶搷㝦摣ㄱ㔹ㄹ敡㜸〵ㄶ昲㌵攷㠴敢昹〳〳晤戴扣捦昴㔷〲㉥捦㕤㉢㜹戰ㄹ敦㈴戹ㅢ㐴攳㘹㜳搵搳㤴愷㔱㠲愰㘱挴㤹㤳㤶〹愸愶㜶户㌰㌵㈷㍣晤攷愴㕦㌵〸ㄳ㑥㘱慦㙣敡攰戰昹㠷ㅤ慥㝥戹ㄹ捣㤹㠱㌹攸〰㜰挰㑢〶ㅡㅤ㔶扤㐲㡥㍤㐷㔴㔹慢㜷㉡捡㐱㐲㕡戱㙤㔲㠶㔴㐱㈸〹ㅢ〷晢㈵㌶㄰搱摤㤵挰摣〹〹昴敥㠵摥〹ㅣ㠰㘷㙡㈷㘵㘳㘹㙢㑤晡㙣㥥搴㜷㌵㘵昷昶愲戰㜳搵攵ぢ㠱㕤昷戳㤸改㐹捦㙤慥扤愱㜲㌰㈷攳㕤㈰慤愴晤㉢㔶昱戵敢㐴捣㍦戸㑥摦㔴㉡㔸捡挸戱挴㈰〲㌱戸㕡㈱散㜵㝣愹㘴扣〷㕦愹摤敡㌴㉥㡢敢〱㔹敡㐶攰挰㐲㑢㥥㔴戰㌱愹㌲戰昶㠸昳愰敢慤㉥扢敥㉡搷搳ㅥ㤵昳㔷愴っ〸挵㠶㈲攸愹㈰愶㄰〳〳ㅤ㤰愸つ戳ㄱ挴改㌹㤰㤱㤹㝡㍤搳㤲攸敢㜹ㄴつ〰ㄴ敡〵㌰〷㡥慦扡つ搷戱㔷捤捡㝡愹〲搰㔸㤹㉦㤷戳㥢㜵摦ㄱ摦㠰晡挴ㅦ慦㡤㥦㝥敡换摦㥡㍤昱搴㤹㍢㍥㜵摡晡攰㠲昸㝡㔴搱〳愲〸㙤ㄴ㤲㥢〰㈳扥㠶㘶㤷昰〱摦㤹㡣㐹攴㡤㈹㤲㝢㐰㄰ㅣ㤴戹ㄱㅢ摥ㅢ㘶〵攱ㄱ攳㠳㜱㤴攴㌷㐱〴㠱㤱挲㠲挷挰戴㤲昸㈷挸愷搳㤵攳㠸愷㝡ㅤ㔷㐶㘹捡搸愵㑥㄰㙥搱㜹〶㡤㘵搰㍣〶㑤㈳扥っ挱㝤つ昰㤷㔱㐵て㌲㈳㙥㔲〶㤸㘷晦㉦愱搹㈵㝣挰㜷㈶攳㉣昲挶㌹㤲〵㤰㌶〳㥣て戳㠲搸㑢ㄹ㘰㤱㡤㤶㐰〴愱㤷㌲挰〵㌰慤㈴㥥㠷晣㉢〶㔰㘰慤㘷攵扥ㅦ㡤㔳挶㉥㜵㠲㠰慥㥦〱㥥㠳昰扥〶昸㕣㔴搱㡤晤戴っ㈴㕤挷㤹慤㙣㘵㍤㘰换つ〶㤹㍤ㄶ㉥㔱攵愶ㅦ戸㉡㈲㡥㔸㜳敥㔹㌷㤸戳晤戵扡戹戵捦㡡㤸〷㔷㘴〳㜸挵〳㙣改㉡㜳搷搶㘴捤戰ㄶ摤愶㔷㤵愷收摥っ㜸〶收㠰敢ㄴ㤴㠹ぢ愴ㅢ㍢愲㠱戶〵㔶〹㔲㑣攳挱摡ㅤ㘹搵㔵慥つㄵ㈹㤶ㄸ㜸㜴摢愲㑢㜶㔰㤷㐳㤶㐲㈴㡡㑦㕡戰㈲㐰㘰㙤搰㕡㕡㐱〴㥡ㅢ戱㑥㝡㜶慤㙥㌷㈴㥤戱㍦㙣㍡㉦㉦〲昰㉤戸扥捤㕢昳㠸戵攴㤹つ㝦㡤㘷㔷㜵㙢㙦㐷㑥ㅤ㜲㥡㌵㙢㌷㝣っ愳扣㐸㝥搴㕡㕣㜱㌷昰愴搲㜴ㅡ㈷捤㌵晦㑤攱ㄵ㠶㡢㌰㈹搷㠸戸㠸挷㐵㌲㥥扣㔱晦攸换㤰昶㤶敤㥢㔸〶㙢㌵昰散攵㈶㡤愶〶㘲㔴㐹㤰㈸㍦挶㌴㐲愳敥㤳慡捤㡤㕤㌰㤳昳敤㜸㥣攸㡢㜸慥扣㔵㈹㔸㔷㘵㥦ㅡ挸晤㈷㉦㥣摡扥㠰晤㑡捦㑣ㅡ挱摣㌵攳㕤ㄵ戲挳㘵㐴っ捣㔵㠵摤㠹搵挰㕣昷搲㑣㔹慡つ㔷改㥥㙤昶〴㈰搳戰㌵㙦㉥换㍡㤰㥥㘳〶㝢挲っ㈱户㘳搶晤愸慥散㍡㡥挹㘵挷挷㤴挵慡㔹㤷㐹㙢愶ㄹ戸㜸愱㌰㉣㄰戵㌶愳㈲㜳ㄳ㐵收㘶㠸挹慣昳扣〱㉡㥥戲摣㡢愶㘷〷㉢㡥㕤㑤㌲挳㕢摡㥢㘲扤㈲㠶㈴㘰昹㔶㙡挵㤳㙥㤰ㄷ㐲㉤戸㍢㡢㝢ㄱ㑤㐷昷㘳㔵挷㠵㡥㝦攲〶㉦〸㠸㍥敡㔴㌵㉣㐸搳〸挰ㄹ㡥㔴扡摣㝡㐰扤晣ㄸ㑡㔴㠰ㄲ挴昷慣㌶㉥㐶っ㌳〹㐲散㕤搱㈳搷㙣㙡摥㌵㙢㈷捣㉡ㅥ㐶〷愳㘷搱㈴㕣换㜰攳愵㠹攷换戸㈲攲敡戹㙥搷愴㤷㘴挱㈲ㅥ㘲ㄳ扣〹攸愱て㠱㙣〶㘲㥡㌶㤴散㌷搶愹㤶慣㍢㈳㤴搴晥搰㝢慡㐷晥㡦摥㌷愹戰㐶㉡愵㡥愹ㄵ㑣搰戰㐱挴摤㈰搴愷慢挱㈳㙣戰ち愲ㄱ㤳㜶晢愶ㄳ㕡〳㠰ㄳ㥥㈵搴㠳㈲㐱㝦ㄲ〰㔹摤ㄶ㌴愵挸㔰ㅢ捡搷㐳㠰㥦㙣扤㔲敡㡢㔸攵戲㤶ち㘳㉣㙦ㄳ㜴㐷㍣㥥㠰慢昵敥ㄷ㤲㥥㘱㈱捣㔹㤴ち晥ぢ㐲㕥扤づ㌲挴捤〲昹㤵晢昲攳㍤〸㉡㤵㌲㔴っ㑢〹㘲攰㤶攲㠴㈲㤱㘵㕣戰挶ㅡ㠸㈰敥换攰搳㜶㘰〹㠲㍤ㅥ㕡㌱晤〳㈰搷ㄳ㈴〵㈱愲扡㐳㝡㘰〴戱㈲攳捦㤵昵挸㉢攸搵搷㈳㌱愵㕡㡦捤㠸㘱㐶㄰㔸戶㔴〱摢㔲㘵ㅤ慣戱〱㈲〸㍡晢㌴搸㘴㠳㉤㌶攰摡愰愳昵㐷㐱摡っ㤸敢㘷挰て愱㑤㉣㈵㠸㐵㕢㐲摢っ昸㘱ㄴㅢ扦ぢ㈲㠸ㅢ㌳昸戴ㅢ昰㉣戲愱〱ㅦ〳㜷㕤〶㈴挴㔴〶㝣ㅣ㡣㈰搶散㌰攰㐷㔰㜰㜵〳ㄲ㤳㉡〳㝥㌴㘲㤴〱〹㑣㕢慡㠰㙤ㄹ昰㘳㘰㡤㈷㐰〴㐱㙢㥦〶ㅦ㘷㠳㑦戰〱㜱慣㌲攰敦㠱㐹戵㔶攰㝣摦〵昸㈴㥡挰㝥㠴戲㉤㤹㙤昶晢㈴㡡㡤摦〷ㄱ㔵ㄲ收㍥ㄵ㌱〳昸搶ㄸ戸扡昷㘳㑦慣㑣愰㔱捡㘲搴㕣っ戶敡㌸愹挸㜲㝦㠶ㅣ㈳㑤㔸㡤愸攱㝡昸挱㈸搱晤㕥㜲愵敦ㅤ㄰㌵戴扦敢㉤㑡㜵㘳㑤つㅦ捤〳㠲摥戱㍦㌵搸扥㤸戲て㤳晥ㄴ挸晥㌳㜶搵㜳㝤搷ち㌲㡢㐰㘲ㄹ扥敤㐱扤戱ㄹ㙤つㄲ晢㡥㐹挵ㄲつ晥㉣戱捥扢㙥㙡戵攱㙥㌴搴㙣㌴㥦㑦㥣捡㕥㠳㠳ㅣ㠶㉦晣㉡扤〳㔶㑣㕦〴换捥挶ㅦ㠰㡣っ愴ㄹ〱㤹搲㜶昸ㅤ㑢㌳攴㌱愵ㄹ昶㤸戴〶挸戵挶㈰捡ㄶ换愲㉡㙡㐲㈶〶〷挵愱慥㠷戴㥥搸㜵攵㈵㐲搷ㄹ扡戴〶㔴扥戶㑥㥤ㄶ㘵㘷㥥㘳挶搳㈴㥦〱㐹愵ㄹ挴㌸㈱晤て㐱昶㤴㘷㉢㙤㄰㑣晦㉣捡㙥㐲㔹攷㡦㍥晡㌳㈸ㅥ㐶戱ち搹昸㌵挹搷晦〸㈵㝢㔱㠲敢㜵敢挲捤㈵㤴㘶㜴㔴愶㔴㐷挹ㅦ㈳愷㝥敤〸敦㤹㉡扡戱攸㔹㄰捥㤴㡢㔶㌰扡㜱攱㡡㘵㘸挹攵〲㍥㘶㜰つ搰摤攲㘱㤴搰攵㥤㉥㘳㡣㔳攳㝣ㅥっ㕣挶㜸挶㤴㘶㑣㘳㑡㌳㠰㌱愵ㄹ挴㤸〴㘳ㄳ摤㈶㝥〷攲㘸㔲㘵㥡㉦愰挴昸㈲㐸㉡捤昰愴㠴搲㌴〶㙤㘱㔰㜳㠳捡愶ㄹ戶㔴攵㕥ㄶ㍤㑦戲㡦愴〰㈲ㅥ㈷㘱敥㠵㠸㔱㥡㌱散㈸捤捥㘳戰㕥捤ㄶ㔰摡慢搹㐷搱㐹㡤昳ㄷ㘰愰搹挷昰挵㤴㘶戰㘱㑡㝦㍣晣㡥愵ㄹ㕤㤸挴㤳㈰㑡戳戳敤㥡㝤〹愵挶㡢㈰愹㌴〳挷㡥㥡㌱愰愸捡〳散昰户㈴户㤱㔰戳㌴攳㡢慡晣〷㌰㈳〳ㅡ户挸扤㕤敢户㍦㥥㍦摣晤㠶㝥ㅣ㙦攲㕢戴昹〰㠰㑣㜸晣㈷攲昷摣㤸㉣敥㤰㐱㠸攲㐷㥢㠵搶扦㠲㥣捥㍤㐳㠹っㄱ挶㑢㈰愳㑦㠳攸搱〷㕦慤㜴昹㔸挴㑤㠷摦挹攸㍢ㅤ㝤敦㥦ㅥ攵㙥㔳㍤㝦㕢晣挶愷㘷戴敦㍣昶戹㥦㍣㝦敦愱㘷晦晣昵攸晢戱敦晣攳挲捦㥥㜹攵㙦愶㙦晥㤷捣㙢敥㡢㝦㍦㝤晦慢㤷㝦㝡昲改㤷愶〵㜷捤㈸㍥摤捦㌴㐷愱收㘵㝣㝡摥愹摥ㅢ㔵㜴扦㔳愵戹捦㤴昳扥ち㘶㘴㐰㜰戳搰㠱攲ㅥ昴愰搵㤴愲㉦愳㘴㤴摢攰挶ㄴ晤㘲慢攷㑥㡡㝥攱㤵愵㥦㍦昱戳㍦㌹戶昱晤攷㍥㜹㔳攱昳挷づ㕡捦ㅣ㜸昸㠷㝦㝡㑣㜰ㄳ昵㔳戴ㄸ改搳愳攸㜸㔴搱晤ㅥ㤵收戶㔳㡡㝥ㄳっㄴ攵摥㔱㡡收摢ㄵ晤㘷㡥挷㕤㜱㘳㡡㜲㉢敤敡搱昴挶㔷㍥晤㤱ㄷ㡦㑤ㅢㅦ晣戳㕢㡦㍣㍢㌳晤攴㍤慦㝥敦㤶㠷换搳㠲㝢慡㥦愲敦搹㐹搱㈳㔱㐵捦扢ㄳ㜷攱搵摥㥤摡㝥㥥攳愰㥡挵挸㍣㘴㠵挵摣㌸㌸摥敤㝡㕤㥤㡣挳戸㈲㝡昸㠱㙣ㅥ慦㈱戸ㄸ攲㕤㌴ち晤㜸㈵㈱攲㙥㕤㐲っ㤵㘳㘷摤㍡攷攱㔶㌲㘸㥤昲昱㡡㔵㑢攲㠱㍦〸昰〳晣㥢攱晥〸慣㤲㘰㠰攱敤〸㜷㠵㜸㕦㤸挰㌵扦换搵㝥摢ㅥ慤摦扤攲扣㔹摥搸㠳㤶晥ち〶㙢㐷戲戵戶昷㤲㠴㜸㌷摣ㅣ㥥〰㡦挷㕥攷戴㜹㕣ㅢ晦㠶㉦晤摦㐱昸㜸慤㡥ㄵ㤰㤴昱ㅦ㈸〹敦愷㠷挰挵戴㤷㐰扡ㄵ㈴㜸㍢㐱ぢ㜴晤㠲㌵㌴㐴慤㕢㐹㌰ㅣ㜰㈵改摦〲搹㜹㝡㜷昶㥤摥户搱挷攰昴戶愷㜶㠹㐵㥣㤵㈲㌱挱㠸挲改戵㤲攰戶㔴〳㝥ㄷ捣捥〳摥摥㜷挰晦㐶㥦慥〱晦㠷㐵㙤〳㜲㘷户て愸搱㠶搷散㘴ㅥ〰晢戰ㅤ愲㍦㠶攲㙢挸攱㍡晦ㄴ慡摦攵扡昳昱改㝢攸㉡攸ㄹ捡㌰扥ㅦ㌱捣〸摡㠹搳㌰㕥㘵㡥㈶㔲㙤㝥㄰㌱慡つ㔵㔳㙤㝥挸㔲㙡愵摡晣愸扤㡤ㅡ〲〵挶晦㠱戴㔲㥡㐳愹㠸昷㘳㌰㠸㜸㙡㄰戰㥤慤㌸㤸㙡㜵㌹㙣愵㠶改㘹挵攱㔴慢㥦慡㔶改搶㐰㠲戲㔵ㄸㅤ㠱㘳㜸㕥捣愲㈰㈹㘲㠲攲㔴挵㜰㔷〵㈵愸㡡愱捥㡡愱㕦〲㘱愷㜹摡 | E27: 㜸〱捤㕡つ㜰ㅢ挷㜵挶㠲㌸㄰ぢ㤲ㄲ㉣挹晦㔶〴挹㜲攵㠶㌴っ㠰愲㐹㐶愳㤸晦戲㈲㑡愲㐵㑡㜲㈳慢攸㤱㌸㠸㈷〲㌸收づ愴挸㑣㘷ㅣ扢慥㘳㈷㡡㥡㌸㐹㤳挶㐹ㅡ㌹愹㔳㌹㍦㙥敢㑥㙢户搳㌶愹搴捣㈴㌳㔵㌲敤㑣晡㌳昵挴改㈴㘹摡㌴戵搲㑣搳扡㤳㔶晤扥扤㍢㄰㌸㠰㤴慣戸㌳㕥〹敦摥敥㝢晢敥扤户扢㙦摦敥㌱㈴㐲愱搰㘵ㄴ㍥㔹㈲㐴㙥㥢㕣㜶㉡㐶㈹㌵㙣ㄵ㡢挶㑣挵戴捡㑥㙡搰戶昵攵㜱搳愹戴㠰㈱㥡㌳㐱㜷戴㥣㘳扥搳㠸攵ㄶつ摢〱㤳ㄶち挵㘲㌲㑣㈹摥㉦攱㔷㈴㝢㐹㌶㑢㜰㠵㘴ㄴ愰扤ㄵ㘰㙡㜸攸攰昴㐹扣㘴戲㘲搹㐶㔷昲㠸㉢㙡㜷㈶㤳捡愴扡㜷㘶晡㔳改慥攴昰㐲戱戲㘰ㅢ扢换挶㐲挵搶㡢㕤挹㠹㠵改愲㌹戳捦㔸㥥戲收㡣昲㙥㘳㍡摤㍤慤敦散换散散改㈹昴昷昷戵挷㈰昹挰昰搰㠴㙤ㄴ㥣搷㑢愶愴捣㠳挳㐳愹〳㐶攵昵㤲ㄹ㠷㑣㠸ㅣ戱㑡扡㔹㝥㥤㠴㙡㜴㜵捦㠸㌱㘳㜲㑣っ挳㌶换㈷㔲㔰扢捥搱愸昵愶〶ㅤ㘷愱㌴捦攱ㅤ㌶㡡挵㐳㐶㠱㙥㤳愵ㄱ愷㌲愱摢㈵愷扤㐴晦ㄹ戶㔱㥥㌱㥣㜵愵搱愵ㄹ愳攸㌱㍡戱搲ㄱ摤㍥愰㤷㡣〸㤱昵㈵㜷っ昷收㡤㜲挵慣㉣㜷㤴づ㍢挶㈱扤㝣挲㈰㡢㔶摡戳㘰收㐵㈴㠲晦愱㤶ㅤ捤㌴㔳〳〵㝤㑡挳戳扡㕤㔱㌵敡㤲㘹挶㕢㌳㕤㤴ㄵ㜵㝡㜱㑡㈵〳扤㌸㘶㤳㘶㘹㥦㘱㤷㡤㈲㕦挲㤱散っ㌰㈹〷戹攳㔰昵㤴㙦づ㐷㐹戴㜹㙢㠲戶昰㉤搱㌶㠰晢愷㙣ㄳ㘶㉥ㄴ㜵扢㙢扦㔹摥摤㥢敤㑦昵㘷㝢搲㤹㙣㕦㑦㝦㍡搳戳戳㙢摣㥣㌳㡡愶攱㔴㜶昷㘱㑡愷戳扤扤晤搹昴㍤㍤㍤扤搹摥敥慥晤晡搲敥扥晥㙣㉡搳㥤敥改捤㘴㝢戳㤹㙥搹づ戱戲㠳㉦㔸〷搰㍥㙣㤴昵攴戸㌹㘶㑣ㅣ摣㈹搷㤳㤶〰㄰㤱㔷戰㘶㙢㔵愲㌶攱㥣ㅥ捥㑤㠷㜳㌳攱㕣㍥㥣㌳挲戹㐲㌸㜷㈲㥣㥢つ攷捣㜰敥㘴㌸㌷〷ㅥ扦挴㕡㕢挳㕥戹戸攵㐱㙤攴搸搷敥㝢愶晤扤搷㥦敢㑢㍦㉦戸㑣搵㉡摦〰㈴ㄵ㌰戱㍦㡤㔲㘳㤶㕢愷㈵晤㐴攵㐶昴㤱㥢〰愲搷〳摣㌸㘱㥤㌴晦攲㙣攵挲㔳攵昳㕦㐸㑥㉦攴慤挵攵攴㠵搳㠷攴つ㘴扢ㄱ㐰㠸敦挳ㄴ㥡昳搲㘷ㅦ㝦敢㍦㍤㜳搳攸〷ち捦㥥㍤㍤㜱收㉢㠲㤱㐲改㜱㌳㤰愰ㅥ摤〱㍤摣㍡昵攸㈶㉡㙦攱ぢ㙥〵㠸摥〶戰晤挰昹戳㈷㡤㔲昹晣戹攴㍢昵㈴㈶㔹晥㤴㙥ㅢ㐹㍤改㔸㠵㡡㐲愹搴㘶昶㜹ㄳ㠰㄰摦昶㤴ㅡㅦ晢敢昹摣挷㙦ㅡ㜹捦㠷㕥㜹昱㠹㡢㝦㜵㑥㌰㜲㈹愵㤲㐰挶〲捥挹愴晢㙡㕣㠳㕡慡慦扦㍢㥤改挳㘰敦散捦㘶晢搵㠸㘷㄰搴㝡晢戲摤搹㜴㈶㥤敥摢㤹改挹捡慤㤰㈵户〱㐴㙦〷搸㌰㘱㕢㘵愵㉦㌴㉤扡晥摡㑥㡥㍢〰㠴昸㝢㑦戵㤹愳㘷㜲㠷戶㙣ㄹ㜸㝡昴攲昶戱捦晥捡㔸晢づ㤰敦昷愶改㠸慤㥦挲挲㕦㠹㈹搹㔴㥡晦慥ㅣ㑣ㄱ㑢ぢ㍤㠵摥㐲㈶㤳敦㐹敢摤扡挶ㄹ㜹戵慢㤶㤳戳扤㜰搴㉣攷慤㔳㙡ㄹ摦㌶愴㍢挶捡慡敥昴㘸㐳搶㐲㌹敦摣摡㥣㌸㔹搱㉢挶㉤㐱摡㡡㤰㠶㙥㤳〸㜲㠶愳摥昷愶㘰户㈳㝡㜱挱ㄸ㕣㌲㕤昲收〰ㄹ㈱捥㥡㕥㥤㍡㘶ㅢ敦愸㔲ㅢ㌴ㅡ挴搶戸愸㘴㌷㔸改㤲㕣扤㤲挳戳㤶㘳㤴㤵㝡㥤愵〹㜳㘶捥戰㈷つ㙥慣㐶㕥㤹㝡㍤㐹㕥㥣敤㍣㔸㠶愱㠸㥣昹㙤戵慤㠵搱愵㡡㔱捥ㅢ㜹攸㍢㙦搸㤵攵㈹㝤扡㘸摣㔰挷攲扥ㄳ㠴㥢敢㥡挷慣㤹〵㘷搸㉡㔷㙣慢㔸㑦ㄹ捣㉦敡㠸敤昹晤㔶摥㐰㘸㡥戰㠴㐴愸愵㐵㠸搰㥢㥢挵㐷捡㜵㔲㙡㈰㙡㠶㤸㤱晡愶晡㘹㤷㍡〴敢㘰㐵搱攰㥣っ㙦扦㠲㌰㈵㤷㘲㝥㝥㜵挶ㅡ㥢㤸㠵㤰晢捥搵戹㤵㡥搵㤱晢晦㘵づ㠷㌷㝡搶㡦㉥㘲晦扢㑦㉦攷㡢㠶扤㘶づ㈵愸㤱扣ㄳ㐰晢ㅢ慣收㔵扤挷㐸㉣㤶挴戲㜶捡捣㔷㘶愳戳㠶㜹㘲戶㠲㌶攴㔹戱ㄸ㕤㍢敢晤㉥㈰搱晡づ㔳㌷昹㘶㠲㑥㠲㉥㠰㜸㍣ㄴ扤ぢ捦㔰㌴㉥㔳㙥㕤攳收昲摡㜷㔶㘶㜲㔲敤攴㐸扢ㅣ慤㌴㘶搹㑥㑢㑢㌳㉢敦搳㥤搹ち愷攷㥡㐴敥愱昲㙥㠲㌴㠰挶慤敤㡡ㅢ㌷㤹㈲捣㑦㍡㑡㈳㐶㐱㐷㔶愸㔶户搰戵㤲㥢㘸㡣ㄸ捥㡣㘴㐶戲ㄷ㙢㘵㈹ちっ㡢扦扤挴搹㙦㉣㔵㐶昴㡡摥㕡㐲㙥㠳㔱㤲㘰敡㔴扤㕣㡣㍤㍢㔴㥢摦㍢敥搵㈰㈱愱搰ㅡ㈹㙤慡挱㤵㠴㠵㠳昵ㄲ㙡昱攰摡㐶㐰㜷㘶ㅦ搱攰㐴慦捦㔱㤰㍡攵昷ㄸ攵愹攵㜹挳㈱㝢㉣扡愶㉢㠳换㡢挲づ捥㑣ㅦ慥㤸㐵㈷〵㑤昷搸搶挲晣敢㈹㠷戲㘴〶挰㉦摡㐵捣攲慢户㠹ㄳ戵㜵㤱㘳㤳换㠵㘲㤴愶愶㉥ㄳㅥ挹搹ち㘱㤷昱㔰㐵昶攰ㄱ㤷㙢搰㌴㙥㍡慦㈵㥦㘳㕥搱㕥㠲㠷愶㙣㐳㘵愸㌱㔵㠱户㍢㑡㐷㉤㝢㙥摡戲收㌸㥦搶愹㥡㌳㙢ㄸㄵ㘶㝤㙤㕥㤶慢戲㔹㈱㕡㕡敡昲慦㥡昴㤰昹㘲戴ㅦ愰㘳戰㔸㑣晡ㄲ㥤攸㕢搰搴㠲晣㌳扡ぢ挸捤愳㜳㔶搹㉡㤹㜳㝡㙥戱㌷㠷晣㌴㌷㍥㍣㥣㕡㉡㍡㈵㜱〱收㌳㈱搲ㅦ㜸昱晢㠷ㅥ晢挴摢㍥㥤摥㌸晡戹㔷戵攷挵㜹㡦搰㤰戱㌱改㔲㠹攳㕢㠱㠸㉦㠳㡤㘱愵ぢ攱攳㈰搶敤㑡㜰ㄸ〰㔹づㄲっ〱㈰㌸㈸㜷㈳㌶㡣戸㔵挱挴㡤昱㐱㡥ㄲ㡣〱〸㘶㙡㉡昱摣〳挴㉦攲〵挸攷愰慢㠱㘳愶搷㌸㜰晢搰ㅡ㤷㙢搰〴昳㍦づ㥥愴戳㈴摤㈳改ㅡ昱㐵〸㙥敡㠰㉦㜸㠴㠶㔴㤱搹㥥㜲挰ㄴ晢㝦づ㙣㜴挰㜵㜰挰攱㍡〷ㅣ攱㍢㡥ㄲ㍣〰㔰攳㠰户扢㔵挱㡣㔱㌹攰ㄸ㤹ㅥ〴㄰捣ち㤵〳㡥〳昱㡢㜸ㅡ昲慢づ㘰㡡搹攸〰ㅤ慤㜱戹〶㑤㌰搷㙣收㠰㡦㝡㜶㌶捣㠰㡦㜸㠴㠶戴㜴㉢㈴㈹〷㥣〴㈲㍥っ㌶㍡挰㠰〳㌶㜸づ昸㤱ㅡ慡㈲挸戲㐴㔰〶愸㜱挰扣㕢ㄵ摢昰㔴づ㜸〷㤹㙣〰戱ㅤ㐰㌹挰〱攲ㄷ㜱ㅡ昲慢づ㘰摡摡攸㠰㔳㘸㡤换㌵㘸㠲ㄹ㙤㌳〷㍣攲搹搹攰㠰㠷㍤㐲㌰昹搵戸㤹扥㠶愴㠵攷㈵㔹㌸㘲ㅡ愷ㄸ㘵搷ㄵ㜰㘰ㅤ㕥㜰㉡㤶摡ㄲ㍡ち㈳搶〱慢㌲㘲㍡昳㐵㝤㜹㘳挱㐳㡥捥ㅡ㘵㈴㙣㌶昲戶㐰㥢㌵㍦㙦攴㘵㘱搲㕡戰㘷㡣扤㈳㙦㠴㠴づ昶㘱攸㔴㉥ㄷㄶ㈸搷㤶愳攰戸㈱㌰㑢㔰㐲ㅡ㌳㡢攰㔶愳㡥捤㌵㘹愱㐲㌹愰敢㔷㍣㍡㘵㔶㡡㐶㕢㐱愵㘴ち㡦ㄵ攰㐵㘴挱昹搶挲搴㉣㐲昰㐸㐷㘱㡦㙤收㡢㘶搹攰㘰㙣㜲㔹挷㡤ㄳ挸㜸㈷㉣挷攴つ㐵㐷㘱捡搶换捥㍣㌷敦㤹攵つ㜵㌵戵换㙢㠵㈱戳散攰㌵㙡ㄴ㠹慦㉦㑣捥㕡愷㜰㠷戵㔰㉡敦搱攷㥤㌷挴愸㜰ㄱ扡㐵つ㡤〸㡢㜰㔸挴挲戱㙢ㅤㅦ戵㌱㉡㠱㔹挰〸㠱ㅡ慦㤰挶ㅣ㌰戸㈵搷っ㔷㈰㥦愶㕥㜵ㄷ㍥㑤㔳扢敡㈵愰捡㕦ㅦ㘶㥦㐷〰摥戶攷昰摥㤵㤳收捦㜴㜵愷㜵㐱摥㔵㈷昶摣㕣搶戹搳㠵挹㍥㘷て㔶㈱㐶㥤戵攰ㄴ㡣ㄷㄴて㘷攳扡ㄵ㜴っ戹㘱㝢㘱㕣㥦㌶㡡㐸㘹㑢㝡㘵㥤㕢攱搹愲愴ㄷㅤ㡦㌶㙣㤵㑡㍡愷ㄷ㉦愸㈶㘷昴愲ㄱ㉢っ㉥㔴㉣摣晡挸〲㠰㥡㠳㕥㤳扥㠴㈶㝤挹㑤㍥ぢ㠷㜸搴㔵㌸㘵㔹㈷㜴摢慣捣㤶捣㤹ㄸ㉢㍣㡥扥㈱收㈵㘲〵昶㡡㙡昱攳㐶㌰㥢㜵㜳㑡っ㜷ち〷㐰扡㡥挳㡦搹ㅢㄶ㔱晣ㄳ搷㜸ㄲ㐲㤴㔱㥢㠷㝣ㄴ搲㌴散㔷㉡散㈸㘵㉥昹㌷搳㤷ㅥ挲ㄴ㔵㠱㐸昰㈰挳昹㉡㝦搵㐳㔸㠹摣つ戰㘶㥡捣ㄳ㐷㝣摣搲昳㘳晡っ㉥㥢㕢扤慢收ㄸ㠶㤶㘱挵㑥昰攰㌲㡣戳㌰捥搸㡢㘶摥戰㘳㙣㤸挴つ㜷㠴㐷㥥愸㍢㠶㐸攱㕡㐲㥡搶ㄶ㙢昶慥扤扥慣敤㕥㍡㔸㝢㠳扥户㐱晥扦摥摦㜷㉦㤴㠲㔹㙡㍢㝡っ愸㝣㌷㠰㐸〳搰㥥〰挳攳㘴㜸〲㐰㘳昲ㅤㅣ㥢晡㌳㠴㜷搲㠸愸㑢㕡㥥㙥㘲㌸〹愸㘳㤱愶っ㘹慢㌹捥㐴摤㤳㑣捣扦昹㡤㑥㘲㤶ㅢ昹戸ㅢ㑢㜹㙣攲〹㈷ㅣ㡥㘰愸愳挱慢愰㠶搷㐲㔸㘹搲㔰攷ㅣ挱摣㍥晡ㅥ㠰㌸ㄷぢ攴攷挶敦㘹挸ㄳ攲㜱㜹ㅡ㉣愱戸㘰慥敦摢捤㡣摦㜳捣晢㠰捡㌳〰㠲昹㉤㜷晡㥡㝤㐹っ愰捡扤㈹愴㜲㑤㈲愱㐰㉣ㄴ㠳㘸㘳㍣㤴敦〷㄰㐳〰っ㌳搵㘹昷㈴昰㉢㑦扢ㄱ昶挰㑦㝥搰㐳㔸ㄱ㑣㤴㝤㤵㠱晡㉡㝦〸愸晣㌰㠰㘰ㄲ摤㠴攱搷挹昰ㄱ㌲㌰慦收㜸㐶㍦ち㜰慢敦愷㈶ㄷ愷捤ㅣ昷㌱昴㠱攳昶〱晡㉦愹㜱摣㔳㘸㤶ㅦ〷㄰捣㡢㠳㡥㘳㌲散㍡㡥㌹慡㉡㐱挷㌱㔵㔶㡥晢㈴㄰挱㥣戹捥㜱㥦㐲挳㤵ㅤ挷摣㕡㌹敥慣㠷㈸挷㌱挱昶㔵〶敡㍢敥㘹愰昲搳〰攲㐱㠰㈶っ㥦㈱挳㙦㤱㠱昹戸㜲摣㌳㐰敥昴ㅤ㜷愵㥢摥㘶㕥晣㙤〸㠰ㄷ㜵㐰晦㡤㌵㕥㍣㠷㘶昹㉣㠰㌸〹㄰昴㘲ㄱ㙤慥ㄷ㤹攸慡ㄲ昴㈲昳㙤攵挵捦〳ㄱ㘵㠰㍡㉦㝥ㄱつ㔷昶攲㍣晢攲㈷㥦昳㄰攵㐵㘶改扥捡㐰㝤㉦晥づ㔰昹扢〰挲〶㘸挲昰㝢㘴㜸㥥っ㑣敡㤵ㄷ㝦ㅦ㐸㥢敦挵晢戲㑤搷改ㅦ㠰〷㡥㘲㘲敦ぢ慤㜱搴ㅦ愲㔹扥〰㈰ㅥ㈶㘰敤㐵〰〶昴㈸㝥ㅡ挳㝢㌰㙡㌵散㈸ㄱ㌰挵ぢ摣㕢㈶㉢换㐵散攷㐴ㄹ挵㕣㡣昱搸㈵㈳戶㕡㌶扥㔷㐶㠲搷㘷搵扥㍢㈰慡㙤㔳攰㙡㔲㜵㈳攵ㄱ晣戴㌱㥣㈷㔶敤㑦ぢ㔶敥㈹搸㠷㈵晡挷〰㥢昶㥢㌳戶挵慦〷挹㐹攴愵㐹㕥昵ㄶ㐲愱昴愰㌶〲㠹㑤摦㐹挳㈲㘵㝥㄰㕢攴搵㐷㝣慥㙣㥤㉡㉢㙤㌴㠷㌷摥捡㕦慤慤㝣㑤ㅣ㍦㔵㙥㠷ㄷㄳ摣收搸㔹晥〹㐰㐷㑢攲㌱㐵挲挱改摤㍥昲戸㡦㜰㜳㘰搱㑥〳㕣㙤愴愶㙣㌱㉤㘶㐴㕥ㄸ㤱搶㔶㜱㐷攰㕥戵㈱挲㔷㉦愶愲㔱〶㜸㙤〸㈶㕦㕤愷㝡㡦戲㌳㈷㠷晣㌳㠲㉦〱挴ㄳ㡣昵㔴㈸晡㘵㠰㜵挳㐳戹㥡㐴㌵晡攷㘸扢づ㙤昵㥦ㅢ愳攷搱摣㡥㘶戵戱攱㍢愶ㄳ扤㠰㤶つ㘸挱㙤㡢㝦晦挲㈹㤴㌸㠳㜶攵捡㜶㈰昲㉢〴敡戰扢ぢ㤸㔰㥢〳㥢扥ち攰㑦㕡昱㈴㉡㡦㤲㝣て慣攴㜴〱ㅥ㤲㥣〳ㅣ㙥戱ㄳ㉤ㅣ昲晡㈱攳ㄶ愱摥昳㤷㐰㌰㘴摣づ㔸ㄲ摣ㄲ㔸ㄲ㡣晦㉣〹敥〱㉣㠲愱㥣挳㈶戲㄰㐷㤷㉡搷㝣ㅤ㉤昲ㅢ〰昱挴㔳㠰㑡㈸㕤㈳改ぢ㐹换攵〵㠰〴愳扣㈲㙥㘴搳㌷〹㌶ㄱ㈸换㔴昴㘶敤敦〰慡㤶㝤ち㤵㐷昱ㄳ㍦㠷㤷㌵㕡戶ㅤ慤㡤㤶㥤㐵〷昵㥥㤷㠰挰戲愷昱㘰㐹㌰㘶戳㈴㍥攳㍥㐳〹〶㘹ㄶ挱昰慡㉣摢㔶㙢搹户搰㉡㕦〶㠸㈷捥〱㉡愱捤㉣㝢搶㈷摥〲㐴㝥㡦攰㔶〲㘵搹攷㠱〹搶晥ㄹ愰㙡ㄹ㈳慡戲散㠶愶㤶㙤㙡㙡搹㜳攸愴㤴昸㈱㄰㔸挶ㄸ捡㤲㘰ㅣ㘵㐹㌰㘸戲㈴ㄸ㌸㔹〴攳愱戲㙣㐳慤㘵慦愰㔵㕥〲㠸㈷ㄸㄲ㔷戵㡣愱㔲ㄱ户戲挳㑦〸戶ㄱ搰戲〴㈳愷㈲扥捡愶晦〶攸〸㙢㡣〰扢〲换戳昹愱慥㌳昸挵㘸ㄴ㕦㠰㤶改愱ㄶ㘴戳㙥づㄸ〹扦攵摡㘴㌱〰挴㈰㡡㍦㑤㠳改㍦㠳ㅣ㡥摥㑡㤰愵挴㉤昸挹㥦〲慣㘷㕣㠸㝡㍦㍣晣㜲改㕥てㅢ㜰㥦㌱敦㤹昰㥥㥢〶搶㝦〹ㄴ搵昳戸搸晡攴愰昶昲㐳扦昹愳㘷㜷摤昱㠹攷㉥㝢捦㠷㉥ㅥ搸㕥㉡㝣晤戱㠱慦㝥户敤〷㝤て㍣㌱㜰攱㤷㝦㍣摢昶敤昷づ〸〶㠵〴㝥挱㑢㐹摥㑡㌷扤㤴扣晣扦㉥㈱㜸㉢㥢㘰ㄸ㔱㈳ㄸ㠶㡤戲〵愰㈳㉣ㄸ㄰㌸㡡攲愷攸㐶搷㈹㙢㌵㄰搷㜳愹㕦㥢戵㡣て㙢㕡ぢ㝡㈸昴敡㝦っ搴㍥摦搵昹㕦〳㠲㠱愲㤹戵晦改ㄹ搵㜰〱昷ㄳ㡦㄰扣㠲㑤㌰戴㈸㙢摢㘸㙤扢㙢㉤㠳㠴戲昶挷戵搶慥愳戵摦〲改摡慣㝤搹敦戹摡搸㠲ㅥち㡤扦㌴㔰昷摣晣昲㠰昸ㅥ㕡㥡㔹晢㙦慢㔹晢㐳㡦㄰扣㙦㑤㌰摣㈸㙢㌷搱摡敢㕤㙢ㄹ㌸㤴戵晦㔲㙢敤㡤戴㤶㈱攱摡慣扤攴昷㕣搳摡搰戱㠱〳㝦扢昹㥥ㅤ晤挷〶㥥㘸㥤㝡晣扡㝦㍦㍥㈰ㄸ㔰㥡㔹晢摤搵慣晤㡥㐷㘸戸㕣㘵〸扡搲攵㙡捤㐷昸昵㘰搷ち摣㜰摢ち㙥㌳〳〶戲㌶戳㔸㔴〹㑦㍢敥㐷㙣㝣〶ㅦ挷㤵ㅦ㙥㐵昰昵挳摢搱㜱ㄵ挸攳愶㝦〲㤷慡挶捥搱挲㐱ㅢ㐷昲搶挲㕥〷㔷戵昹ㄸ㍥攳㔵㉡昸㡢㥥㌷挲攵〹㔲搰〸〳㉢慦〶㜰㔰づ㌷捤晥㤸搶慤㜱慦戵攲て晦敢㜶㤸搷㉡搷㜶㙢ㅢ摤㡣㈹㜷摤捡㥦㜷㈵㔵挲改㠴挵㍦㘲㠰搵㤶晥㠳散捤㤷㤵挶搸㌳攵ㄶ㜰㐷㤳〰晣㌸愵㌶㔱㙣愹㜱戹ㄵ㉤敥戵捣㕤㘴ㄵ摣㠲㌸ㄱ愲户㠳㜰攳捡㕦扥㈴昳昸ㅥ㙦㥢搳ぢ扣愷㡤㠸㝦昰摦ㄱ㝡㔷㘸攵ㅤ㜷㔰ㄸ摦㠱㐳㌷〱攴敦㘰ㄳ㐵㉢㄰搲ㄸ昱㠳慥㘳戶㍦㐶摦〶扥㠰户戵搱㥦㤳扦昱㐷〳晦搳㝤㝣㄰搷㑦慥㙡㤲㠶㠷挵㌷㝤ㄵ敡捣散攴晢㤴ち㙡戰愸挲㕤昵㉡〸挶㘸㘵攲摤㐰㔶㌷昱ㅢ扥晣㍡ㄳ㌳㔵昹㔵ㄳ扢〳昲ㄹ收㘹㘶㔵㜱挶㑡扥搰㔳晣㙢扥攰㍡挵㝢慢㠲慢㡡昷〷〴㌳摣㉡挵㜷〱㔹㕤昱ぢ扥晣㍡挵㜷㔷攵㔷ㄵ扦㌷㈰㥦ㄱ扢㑥㜱㠶扤ㅡ挵晦搴ㄷ㕣愷昸㜰㔵㜰㔵昱搱㠰㘰㐶㑥愵昸ㅥ㈰慢㉢晥㠲㉦扦㑥昱扤㔵昹㔵挵昷〵攴㌳昸搶㉡慥㜱戲㕦昵㍡〴㙦㘸㈳㈲㤶昷㔷戰扣慤敤㉣昲㙦㘰㥢㕤晥搵㕦㡥敦㐷㕦戱㤵㠰挳㝢挰㐳㔸ㄱ㕣ぢ㔴㐳ㅥ㘴㉢㤷〱晥㠷攴㠴㠷戰㈲㌸㔹ㄵ捦晤㙣攵㍣㘵戳㍣攴㈱慣〸㑥㌸挵㌳挹㔶捥㌵㌶换㈹て㘱㐵㜰敥㈸㥥挳㙣攵戴㘱戳㍣攲㈱慣〸㡥扦攲㌹捡搶㝢㍤㤲㝣挰㐳昰〸〹づ愵攲昹〵戶㜲ㄴ搹㉣摦敥㈱慣〸づ㠷攲㌹挶㔶㡥〴㥢攵㠳ㅥ挲㡡㔰㙥㘱敢㜱㔶扤㤲愰㝢㈲愸挸㕦〴搲搱㈲㤴㘳㔸捦搵㜲搱㐱㡡敢㤷㕣㉥攵ㅡ㜲搵挹愲㡢ㄴ搷戴换愵㥣搳㈰㡢㑥㔲㕣㜹㤷㑢戹愷㐱ㄶ摤愴戸ち㉥㤷㜲㔰㠳㉣㍡㑡㜱捤扡㕣捡㐵つ戲攸㉡挵㜵搲攵㔲㑥㙡㤰㐵㘷㈹慥愲攲㑡昸愶〹㝡㐶攵ㄶㅦ挴㔲㘰摥㌸㠴扥㌱摣づ昸㉥ㄲ昴㡡攲㜸戲㥥〳㐷㝢㡦昰㠱〰㠱戶慢ㅥ敦て㄰㘸慥㈲晣㕡㠰㐰ぢㄵ攱㑣㠰㐰愳ㄴ攱㝤〱〲敤㔰㠴搳昵㠴戶晦〳攲㘹敥ㄹ | F27: 㜸〱捤㕡㝢㜰㕣搵㜹摦戳摡扤摡戳㤲散挵㌶㔰挰㠰㙣散〲㤱㔹戴㙦挹慥㐱搲捡㌲づ㌲㌲㤶戰㌳戴㤹敤搵敥㕤敢㕡晢㄰昷敥㕡㔲晦㈸㤰愱〹㐹㐸挸㤰㘷ㅢ㐸〲㈱㘹㌰〱搲愶搳搰ㄴㅡㄲ㐳㌲㤹㌶㐹㕦搳㐷㌲ㄹ㥣捥㠴㤲扥攲㑣摡㑣㌳㤹㠹晢晢㥤㝢慦戴㉦挹㡦搰ㄹ㡥扤摦晤捥㌹摦昹捥昹扥㜳敥㜷㝥攷㕣昹㠴捦攷㍢㡢挴㈷㔳㠰捣搶改㘵扢㘶㤴愳搹㙡愹㘴攴㙢㘶戵㘲㐷㐷㉤㑢㕦㥥㌴敤㕡ㄷ〴戴㥣㠹㝡㍢㤸戳捤摦㌱㐲戹ㄳ㠶㘵㐳㈸攸昳㠵㐲搲㑦㉤敥㉦攲㘵㈴㕢㐹ㄶ㑢㐸昹愴〶搲摢つ㌲㤳ㅤ㥢㥡㍤㡥㑥愶㙢㔵换搸搵㝦挴㔱戵㌷ㄶ㡢挶愲㠹㘴㙣㌸㍡戸慢㍦㕢㉦搵敡㤶戱户㘲搴㙢㤶㕥摡搵㝦愸㍥㕢㌲昳户ㅢ换㌳搵㜹愳戲搷㤸ㅤ㑣捣敡挹愱㔸㌲㤵㉡づてて昵㠶愰昹㡥散搸㈱换㈸摡㙦㤴㑥㐹㥤㔳搹戱攸ㅤ㐶敤㡤搲ㄹ㠶㑥愸ㅣ慦㤶㜵戳昲〶㈹つ搲搵愹㜱㈳㙦㜲㑥っ挳㌲㉢挷愲ㄸ㜶㤳愳㤱换㐴㐷㙤扢㕥㕥攰昴㘶㡤㔲改戰㔱愴摢㘴㜹摣慥ㅤ搲慤戲摤㕢愶晦っ换愸攴つ㝢㐳㜹摦㔲摥㈸戹㠲㜶愸㝣㐴户敥搰换㐶㠰捣挶戲㌳㠷〷ち㐶愵㘶搶㤶晢捡㜷搹挶㘱扤㜲捣愰㐸戰扣扦㙥ㄶ㐴㈰㠰晦扥慥敢㍢㡤㑣㑤ㄴ挶㔳捥捥改㔶㑤攵㌸㤶㔸㈷搹㠶攵愲慣㘸ㅡㄷ㤷㔴㝦㑢㉢捥搹戴㔹扥摤戰㉡㐶㠹㥤㜰㈶〷㕡㠴㤴㠳㥣㜹㔸昱㤴㘷づ㘷㐹昴戸敦〴㙤㘱㉦㕡て挸扥ㄹ换㠴㤹昵㤲㙥敤㍡㘸㔶昶挶㤲挹㕤㤳收扣㔱㌲つ扢挶㕣㌴㌵ㅣ挷扡ㅣㅡ㡡愵㠶㔰㜷㔰㕦摡ㅢ㑢㘱㑤愷㘲㤹挴攰㘰㝡㌸㤳㡣て愵㘵㉦㔴挹㍥㉡摤〰㜲挹㈱慢㕡㌹昵昸㜱愳摣㍦愷㤷㤶晢戳户挹㡤ㄴ㠸㠰㠸挰㡦昱戲㌶㡥㠵挳昰攷㜴㝦㙥搶㥦换晢㜳〵㝦捥昰攷㡡晥摣㌱㝦㙥捥㥦㌳晤戹攳晥摣㍣㘴扣ㄴ敡敥昶扢改ㄳ搷散㝥攵㠷敦㜹改攰〷攷㙥㜸晤搴㤷ㅥ扣㑥昰晤㔴慦昷㈶㌰㌳㉤戶挵㠷㤲搱㘴㈲㤳㠸愷搳愹㜸㉣㤳ㅥ捣㌴㤸㥡㠸愵愳㠳挹㔸㌲㤳ㅣ㑣㘵㠶㌳〹挷搴㐴㌲ㄳ㑤㈷㔳改㜸㉣㤹㑥㘴㌲㠳㤹愴摣っ捤㜲ぢ㠸㜶㈹㐸㈸㙢㔴昴晥扢㉢㔳昲㌲㤶㕦づ㈲挴敢戰㤰㔶㍥㌳昰㡤ㅢㅦ㝣攰㙤愳扦晦㡤㕥晤攱愷㕦㌸㈹ㄸ㌹搴昰慥〰㌳搱㌲扣㘴㜲㈸㤵㙥ㄸ㤱捡㐷搳挳㠳㠹攴昰㘰㘶㌸愱㝣㥦ㅣ㑥㈴攳搱㐴㙡㌸㌱㤴ㄸㅥ捡挴攳㘹㜹㈵㍢扥ち㐴摢ち㜲敤㤴㕤搳㙢㤵㔳捦昴ㄷ捤㡡㕥㜹昹㝤㘴㌱ㄹ昳㈵扤愰㘶攲㙡㡡㕦〳㈲挴て摣㜱晥摤㙦摦昲敦晦戲㍤㌱昹摥慦扤㥡愸晦搵攳㈳㠲挱㑤㡤戳ㅦ捣㕤㉤攳㡣つて㐵㤳挹㘴㍡㤹㑥つ挶㔲戱愱㜸慣㘱搰昱昸㘰㌴㌹っㅦ挶搲改愱㐴㉡〱㡢戸㘴攲ㄸ㜴㉡㤹㠰㈷㔱㠸挵㌴ㅣ㤷摢愰㕡㙥〷搱慥〳改㔵㝥㥣㌴㈷㡣㐳㔳㐹戹㠳㜵㍢㐱㠴昸慥㍢挶㉤搶㝦ㅦ晤晥攱㉦㘷㥦摤慡晤摢攱㔷愶㠲扤搷愳晡㑥㜷㐹㡦㕢晡㈲㠲挴㙡晣㠹㐷〷昹敦摣㠱ㄷ㜱户㤸㉡㘶㡡戱㔸㈱㌵愸㈷昴㈰㔷昲昹扥攱㕣捦扤挵愳㘶愵㔰㕤㔴慦晣搶㌱摤㌶㔶㈳挰㠰㕢㌷㔶慤㔷ち昶㔵㥤㉢愷㌱㕤挶㤵慤㜵慢㑡摡㥡㑤㈳㈰ㅡ戶敡敦㥡搶㘶㐷昴㔲摤ㄸ㕤㌲㥤敡慢㕢慡ㄱづ慢戳㙢搷㑥㔸挶㍤㉢戵㙤㈳ㅡ挵㌶㝡㐲改㙥戳搲愹㜲挶搵㥦㥤慢摡㐶㐵つ㙦愰㝣挸捣捦ㅢ搶戴挱㑤搸㈸㈸㔳㉦㘵㤵ㅢ㤳〷愶㉡㌰ㄴ㔱戶戰扤戱戴戸㙦愹㘶㔴ち㐶〱攳㕤㌰慣摡昲㡣㍥㕢㌲㉥㙢ㄲ㜱晡㐴挵ㄵ㑤挵ㄳ搵㝣摤捥㔶㉢㌵慢㕡㙡慥ㄹ㉤㥣搰戱てㄴづ㔶ぢ〶挲㜸㠰挹㈷㝣㕤㕤㐲昸摥搲㈹㤶㔲慦ㅤ㔵ㄳ搱㌰挵㡣敡扦搶扣散愲㠷㘱ㅤ慣㈸ㄹ㕣㤳晥ㅤ攷㔰愶昴㔲捤㡤㙢ぢ㌶搸㐴挴㐲改ㅢ搶㤶㔶㘳㕣㤹戹晦㕦㘱扦㝦戳㙢晤扥ㄳ搸㉢㙦搳㉢㠵㤲㘱慤㡢户〴㐷㈴㙦〰〹晥㈳摥收㌵扤挷攰㉤㤶挴㜲㜰搱㉣搴收戴㌹挳㍣㌶㔷㐳ㄹ㌰㔹㈸㐴搷戶㈵昹ㄶㄴ挹〱㤲㕤㈰攱戰㑦扢㠹㐲㕡㔸㐶㥤㝣㤰㥢搲㠵敦挲㐴㝤㔲敤晡㠰㘸㜶戰㍣㔱戵散慥慥㑥㔶摥愶摢㜳㌵㉥捦㜵㉢戹摦捡㥢㐹〶㐱㠲摣つ捦戹挹㔳㈸㐰㉣搳㔷ㅥ㌷㡡㍡㄰愴㝡扢㠵ㅥ㉣㍢愰㘴摣戰昳㤲攸攵〰摥㤵㈵つㅣ㕥晥摥㌲㔷扦戱㔴ㅢ搷㙢㝡㜷ㄹ㌸〸戳㈴㈱㌴愰㕡㌹ㅣ㕢昶愹㌲慦㜵搸捤㐱㐳㐴戱つ㕡㝡㔴㠱愳〹㉦づ摥ㄷ㕦㤷㑢搷㌷〲㘳㈷㔲搱㕡ㄷ㝡㌳㥥〱捣㉡散㌷㉡㌳换ぢ㠶㑤昱㤰戶慥㉢㕢㕦㉦㉡㥢捡捦摥㔵㌳㑢㜶ㄴ㈳摤㙦㔵敢ぢ㙦愴ㅥ敡㤲㌱㄰㉦〵扦㡤㔵㝣晥㌶昱㍣搲㝤㠲㜳㤳换昹㐲搴挶ㄲ㐹愰㈴戹㕡愱散㉣ㅥ㉡挹ㄴㅥ攱昵敡㠲摣㜴㉥〴晢ㄱ㜳昴㤶攱愱ㄹ换㔰㘸㌶愴㌲昰㜶㕦昹㘸搵㥡㥦慤㔶攷戹㥥㌶愸㥣㍤㘷ㄸ㌵㈲挴ㅥㄷㄱ㉢攴㉢㐴㔷㔷ㄳ㘴㙢㠰㤲挴㤶摡㌰㐸摦㘸愹搴敦㘹戴戵摤㈸敡〲㔶搵昶㠰戹㘲摦㝣戵㔲㉤㥢昳㝡敥㐴㈶〷㉣㥢㥢捣㘶愳㑢㈵扢㉣㕥㠶昹〴㑢㡢㍢㥦㝣㍥愳摤㍤晥敥挳㝦㝢攸戱㥦㝥敦〵㜱捡慤㘸〳㜹㐴㘰ち㜰摥〲㐶㝣ㄵ㘲っ㉢攰㥢㤳ㅣ㐱㕥㡥㤲㡣㠱㈰㌸㈸㜷㈳㌶㡣㍢㔹㐱ㄴ挷昸㈰昷㤱㑣㠰〸愲㌸㠵㔵昷㠳昱㤲㜸ㅥ晡㌹改㙡攲〸晢摡㈷敥㜶㤴㠶攵㍡㜵㠲搸㤰㤳㈷改㉣㐹昷㐸扡㐶㍣ぢ挵ㅤㅤ昰㡣㕢搱〶㈳㠹昸㤴〳㘶搸晥㘹㠸㜵㜶挰ㄱ昶㜱㤴攴㙤㈰つづ戸摢挹ち愲㐶攵㠰摦愴搰㙦㠱〸挲㐳攵㠰户㠳昱㤲㜸〲㝤慣㌸㠰㌰戳摤〱㍡㑡挳㜲㥤㍡㐱搰搹挹〱ㅦ㕢换〱ㅦ㜵㉢摡昰改㌶㘸㔲づ㌸づ㐶㝣㜸㑤〷㤴㔰㉤换㈴ㄵ㤰〶〷㉣㌸㔹㐱晣愹ㅣ㜰て㠵㉣㄰㐱散愹ㅣ㘰㠳昱㤲㜸愸搱〱〴慣敤づ㔸㐴㘹㔸慥㔳㈷㠸㘸㍢㌹攰ㅤ㙢㌹攰㝥户愲ㄵ晣〶戹㤹㕥〰㘸改攱㠰㡢㐷㑣㘳㤱㔱㜶㐳ㄱ㠷摢㙣摤慥㔵搵㤶搰㔷ㅣ慦摥㔱慤㡤㥢昶㐲㐹㕦摥㕣㜴㤹愳㜳㐶〵㠰捤〲㙥㙢㈹慢㉥㉣ㄸ〵㔹㥣慥搶慤扣㜱㘰晣捤〰攸㘰ㅦ愶㑥㘱㌹扦㐰扡㌸㡣㠲攳㠶挰㉡㐱昲〵㠹㉣㕡户ㅡ㜵挴㙥㠰㠵㡡攵㠴㙥㕣昵攸㡣㔹㉢ㄹ㍤㐵〵挹ㄴㅦ㉡挲㡢㐰挱㠵敥攲捣ㅣ㐲昰㜸㕦㜱扦㘵ㄶ㑡㘶挵攰㘴㙣㜱㐴㈷㡤㘳㐰扣㠷慡戶挹摢㡣扥攲㡣愵㔷散〵㙥摥昹攵㑤㑤㌹戵换〷㡢㘳㘶挵㐶㌷㙡ㄶ挹㙦㉣㑥捦㔵ㄷ㜱摦㔵㉦㔷昶敢ぢ昶㥢㘲㔶ㄸ㉦㥤愴愶㐶昸㠵摦㉦㐲晥搰挵捥㡦㜶ㅦ戴㕤扥㝡ㅥ敤挷㕡慤㔹收㙣㥤㑥㔳ㅤ挵㐱〳㈴㙡ㅥ㝤㐱㘲挳搶慤扡㘱ㅡ㕢㜰㌶挷摢㜴㘹搴ㄱ昲慤㕣㈴㉡㕣㝢㍦摢扣〳攴慤晢敦㍡戰㝡〲晤㤵慥晦㠲扢愰敦扣〱㍦㌷㥤つ捥㌲攲㈱㠰慢ち㙦㈷㔶〳㜳慤㑢㌳㕣㔴㌲㕣愵ㅢ㔶搹〹㘰挶摥攲愴㍥㙢㤴〰㜵换㝡㙤㠳㤳攱㤹愳慣㤷㙣户㉥㕢㉤㤷㜵㉥㍢㕥㜲㑤攷昵㤲ㄱ㉡㡥搶㙢㔵摣ㅣ挹㈲㠸㕡㥢㙥㤱扥㠴㈲㝤挹〱愵挵挳㍣〲㉢㥥扡慡挷㜴换慣捤㤵捤㝣㠸ㄹㅥ㔳摦ㄴ敢ㄵ㌱㠴㠷㄰㉦㜹昱愴ㄵ攵㍡㔸ㄳ搳ㅤ挵挱㤰慥攳昴㘳㔵晢㠵㠶㝦攲㈲㑦㐸㠸㍥㙡㔳㤱て㐰㕢搰て挲㜰愴搲ㄹ敦㜶晢捣扤㈸㔱〱㑡昰㠰挳㙡昹㝢㉥挳㑣攰㘶㤰㜵攱㌳㑦㈲攱挹慡㕥㤸搰昳戸戰敥㜶慦慢㐳㤸㕡㠶ㅢ㉢挲〳㑤ㄶ㘷㘴㥣扤㑦㤸〵挳ち戱㘰ㅡ户攴〱ㅥ㠵㌴㘷づ〱敤扡㝣挱㘰㑦愸㔳㕦〷㍣㕤㍢㕣㤸搸㜸ぢ㝦愰㑤晦㝦摣㌹㜴㉢〶〵戳搴㌶昵㑥戰昲㕤㈰㘲㄰㠴昶戴〸㍣㐸㠱㜷㠳〴〹捡㕢攷愶昹㙣攱㥥㐰〲敡愲㤷愷㥥㄰㑥〸敡戸ㄴ㔴㠶昴㌴ㅣ㜳㌴攷㠴ㄳ昲㙥㡦戵㘹慣㜲愳㄰㜶㘲㉣㡦㔳㥣づ扦㍦㠰愹搶㕡慦㠸摡扡㠵戲昲戴愱捥㍦㠲㤸㕦㝢て㐸て㕦ㄶ攸捦摤㠶㝢扢㥢㔰㠰晤㝤〵戸㠶挳昲㈱ㄴ昹挲㠲㠷〰捦㜰ㅥㄳ㕣捦扣て慣㝣㍦㠸㈰昰㈵〴㘸搸戰挴〸戲摣戴㝣摡挳㈰ㄷㄲ㈴挵㈸ㅡ㌰㔰捡て㠰㠸㌱㄰挶㥦㤵昵昸〸昸㜳慦㐷㠲㙡戵ㅥ㍦攸㌲捣〸㈲㙢捦ㄴ戰㥥㈹ㅦ〲㉢㍦っ㈲㠸扡㍢〸㝣㠴〲ㅦ愵〰㠱㌸㈷㕡晢ㄸ㐸搸㜳攰㘴慡㤳晦晥〰㈲昰摦敤愰㥥捥〶晦㝤ㅣ挵昲㔱㄰㐱摣摣敡㍦㠲㘵挷㝦㡦㠱扢㈰晦ㄱ㘲㉢晦㝤〲㡣㈰搶㙥昲摦愷㔰㜰㙥晦ㄱ㤳㉢晦㍤敥㌲捡㝦〴收㥥㈹㘰㍤晦㍤〱㔶㝥ㅡ㐴㄰戴㜷㄰㜸㤲〲㥦愱〰㜱扣昲摦㘷挱散昰晣户摥㉤㜱㈷捦㝥づ㡤攱㔹ㅤ搴敢慤挱戳㑦愱㔸㥥〴ㄱ挷㐱㕡㍤㕢㐲㤹攳搹愷挱㕤㤰㘷㠹摤㤵㘷㍦て㐶㔴㐰㥡㍣晢㉣ち捥敤搹〵戶挵㑦㍥攷㌲捡戳㐴晣㥥㈹㘰㍤捦㝥〱慣晣㈳㄰挱搳㐰〷㠱㍦愶挰ㄷ㈹挰〳㠲昲散㥦㠰㔹㕤㤹ㅤ摦散㍦㠵〸晣挷㌳㠲愷戳挱㝦㕦㐲戱㝣ㅥ㐴摣㑦挲摣㥦戹㑣ㄷ㥥㐱敥〸慤㠱慥㙤ㄳち㐰㈸㕣攴㜶㌴㕤㕢㉥〱〲㤰㘵攰㜳㌸㠶㜰愷ㅡ攱戸㙡攱㌳㘹愰昵㈶㙥愵敤昵㔰搵戳愵攵㤶㔳㌵㘳つ㜷扢攰〴㈲搷㥡敤㘹挱敡㤵〷摢㌰㘹㝦づ戲攵愰㤹户慡㜶戵㔸敢㥦〶挴敤攷慤㜱搱攷ㅢㅣつ㡥㐳㘳挷㍥㘹㔸愰挲敦㜰㈷㜸㡢ㄲ㥥慦㔴ㄷ㉢㙡㌴㐱㥢㤷攷捡㕦摤摤散㈶㡣㥦㑡搷挱㡢ㄱ敥㡣㙣㉣㕦〴改敢㡡㜰㙢㘱㡡扣换㜹晡㈲て㝡っ昷ㄳ愶攰㐳㈰攷ㅢ摣愹㕢捣㡡扣㈸〸㈳搰摤㉤㜶戶㕣搱戶㙤ち㉢㜷㕣㥡挶㍤㈱㌸〶㤳捦慦㔱戳㐷搹㤸〰㐱㝥㠵攴㈵㤰㜰㠴扢〳〷愴㝤ㄵ㘴㐳㜶㉣搷㠰㙤戵慦愱散ㄲ㤴㌵㝦攵搴㑥愱戸ㄷ挵㙡㉦挴攷㔳㕢㝢ㄹ㈵㥢㔰㠲㡢ㅢ敦㉡㠷㑢㈸昲㝥㤴㉢㔷昶㠲㤱㕦㈷改㈳搹〳㈲搴戶挱摣㌷㤹挳㡦㡢㔶㜰摢㜸㠰㑣ㅡ㔶㜲戹㠰昷㐹慥〱㑥户㐸愲㠴㔳摥㍣㘵摣㍣㔴㍦摦〲㠳㈹攳㐶挱ㄴ攱㘶挱ㄴ攱捥挰ㄴ攱敥挰㈴ㄸ昵㌹㙤㈲づ㜵㜴愹㜲捤㜷㔰㈲晦ㅡ㈴ㅣ昹㌸愸㔲㑡搷㐸晡㐲搲㜲昹㌲㐸㠴ㅢ㠲慡摣捣愲㝦㈰搹㐲愲㉣㔳〱㥤戹㝦〶㔹戱散㔳挸㍣挰㠲㕦㐷㘷敤㤶敤㐰㘹扢㘵㡦愳㠱敡攷晢㘰㘰搹ㄳ㜸㌰㐵㍥敤㍣㝤㤱㈷㍤㠶㜱㥢㐹㌰敡㉡换戶㌷㕡昶㉡㑡攵㘹㤰㜰攴㈹㔰愵戴㤳㘵㈷扤捡㉢挱挸搷㐸慥㈲㔱㤶㝤ㅥㅣつ㤲㍦㜲ㄹ㌵㘷っ愸捡戲换㍡㕡戶愵愳㘵捦愱㤱ㅡ挴㝦㠲㠱㘵っ愱㑣ㄱ㠶㔱愶〸㘳㈶㔳㠴㜱㤳㐹㌰ㅥ㉡换㌶㌵㕡昶㘳㤴捡㌳㈰攱〸㐳攲㥡㤶㌱㔴慡捡㙤㙣昰㌳㤲敤㈴戴㉣挲挸愹㉡㝦づ愶慦㉢挸㤷㝦㑦换㥢搹昹〸㌸搰晡摤㘹ㅦ扥㈳㉤㜳㌵㜵〱晢㍡㠸㌱攰摦㝤㜱扡昸敥㠷愰㡡扦愰〶慢㝦〵㍤㥣戸搵昸㑡㡤搷攲㈷㝦〱戲㤱㈱㐱㜳㝦㜸㜸改捣慤㉥㌷攲㍣㐳敥㌳攲㍥户㡣㙣㝣〹㌵慡攵摢挵戶㐷㐶㠳愷敦晤攴㑦㑥敥搹昹搸㜳㘷摤攷扤愸㐷㥡ㅤ戹㜴敢〷ㅥ晤㥦㑤戳㈳扦晢晣摦扣昲㠷㍦挸㡦〸挶㠳〸㝥慤㔷㥢〲㘶㜶扣摡㈴昰㘵㐵敢摤㙥㠴ㄱ㐴㑤ㅥ戱㜶㕦㤷㘰ㄸ攰〴㡡㕦晥昲散㔹㝡㑤ㄹ摡㠵捡㡤㝣挱㉦捥㔰㐶㠵㜵つ扤㜵㜲捦㕢捦㝥晤㥥㤱扥㤳㕦㍣晤搴㑢昶挸昷扡㜷㉤捥㝣戹㍥㈲ㄸㅥ㍡ㄹ晡㜳㡣慥愳愱晦敢㔶戴摥攱㐶ㄸ㔰㤴愱搲㌱㤴㔱㐱ㄹ晡戳㐶㐳㝢㘸攸慢摥㜰昱㙣㐸攷㌱愳愷㈱扥慥愱㑡摤扦晥㜰攴㕢㍦㍤㜲昹㘵㜸晥攲㥦㌶摤昷㤷㤷扦㍥㈲㕥㐳㑤㈷㐳㝦戲㤶愱㘷摣㡡搶扢摡〸攳㡢㌲昴ㄲ挷㔰〶〹㘵攸㝦㌵ㅡ扡㤹㠶昲昵扦戸ㄹ㍤攳戵㕣㙢改㝥昶㥢㤳敦摤晤敤戹㤱㐷㑦摤戳敦㍢て捦㡦㍣昲攲㐷捥收敦慣㡣〸〶㡦㑥㠶晥㘸㉤㐳㕦㜷㉢摡敥㘴ㄹ㙥捥㜵㈷摢昰敤㝥㈳挴㠳㐵㙥慥㍤㐵愷㤸ㄱ〲〸捤㉣㤵ㄴ戸改挵昵㠹㠵慦攷㤳戸㈹挴愵〹㍥㥡戸扢㌷㙥㄰㜹ㅡ昵づ攸㔲攵搸㔸㉢㑥㔹㌸戱㜷ㄷて搸戸攱㉤㠴昰昵慦㔶挳ㅦつ扤ㄹ敥㔶〰㌷〳㡣愴扣㌹挰扢敤敦㠸昴〸攱搶戹昶㕡昵㠷昷㔱摣捦㕢㤷㡢扢散搵慥挰㤲㙢㍣㡣ㄴㅡ敥ㄲ〳攲㌵㑣戳戳㠹摦攷㍢慢挶つ挴㈵慦㐲ㅢ㙤㉢〸扦㙣愹晤ㄳ㈴㉣慦㐶㠹㜳㜷㜳ㄳ㐵㠳っ挴慤〶ㄲ㝦㑦搰〳㉤㥦户㝢㝡㍣㝣捣愶敡捡㠷㉢㐹扢㜶摤攱㥤敥㌸扣㙤ㅣ〷㠷户㍡戴敢㥡㠷㈶ㄸ㍡㌹㍣㉦〹挶ㅦ搵攱㑥㌰㙢晢攳扢ㅤ㍢扣㥥摡㥢㍢扣㤱㐵㜴㠳㈲㍥挱㄰搶搴㈱攳㠰敡㜰〰捣摡ㅤ晥㝤挷づ㙦愲昶收づ㙦㘶㔱㐳㠷っ㈵㡤ㅤ〶㌹㘹攷扤慡㈰敢摢㡣昷捦晤戳㔱㕥㑤づ㤴昸㐷愳㥤㙥扡㥡㙦㠲㘳㘸㉢戸ㄴ愸㐳挶㕤㠶ㄹ挱㠹攱㌰㘴㠲愵㥣ㄳ晣昷挹愴换㌰㈳攸㑢㈵㤳㘲㈹摤挸㘲㤹㜶ㄹ㘶〴捤㔷㌲ㄹ㤶搲㜲ㄶ换㈱㤷㘱㐶愸㘱戰㜴㤸㔹㌷㐵㌸ㅣㄵ㠶㜷㠳挱挶慡〶㠲捡㘶㈹づ㐸㐹晤㠶㈳愵㠶搲㈶挵㈱㈹愹㕢ㅣ㈹㌵㤸㌶㈹づ㑡㐹㡤㈸愹㠸㌷ㅣ挱ㄱ愸ㅤ攰㉢㤸㘲敥改㘳㘸ㅢㄲ㍥挱㑥㔵挵㕦戴㔴戰ㅦ㔵昱㘲㑢〵㔵慢㡡ㄷ㥡㉢㝡晥てつ㐵愶愳 | G27: 㜸〱捤㕡㝢㙣㈴㐷㤹㥦㥡㤹㙥㑦㡦敤摤㐹㜶㠱㈴攴㌱㉣ㅢ㐸戲㡢攵戱挷慦挰㘲散昱慥戳ㄷ敦㠳ㅤ敦㐶㠷戸っ敤㤹敡㜵挷摤搳愶扢挷㙢㠷挷㠶昷㉢㠸㐷〲㐴〷ㄱ㈱㜰挷㈹㈷㐰〸㠸㄰ㄲ攲晥㐱㜰て挴〹㜱〷〸愱攵㈱挴ㅢㄶ晥㐵㘸昹晤慡㝢散㜹搹晢㈰㐸愹摤昹收慢慡慦扥慡敦慢慡慦㝥㔵攳㠴㐸㈴ㄲ㤷㤰昸捤㤴㈶㜳㜳㜹㈳〸愵㍢㔴昲ㅣ㐷㔶㐳摢慢〷㐳㌳扥㙦㙥㉣搸㐱㤸㠲㠰㕥戱㔱ㅦ㘸㤵挰㝥㔰㘶㉡㙢搲て㈰愴㈵ㄲ㤹㡣㤱㐴㍤㘵昸挹㌵㌳〶㜳㐶㥡〴㔲㠹〱ㅤ㘴戱㌴㝢㘲改〱攸㉦㠷㥥㉦て收捦㐴㕡づㄵち㐳㠵愱搱㘲㘱㙡㘸昸㘰扥搴㜰挲㠶㉦て搵㘵㈳昴㑤攷㘰晥㘴㘳挹戱慢昷捡㡤㐵㙦㐵搶て挹愵攱搱㈵戳㌸㔹㈸㡥㡤㔹㔳㔳㤳〳㝤搰㝣扣㌴㝢搲㤷㔶昰㑣改捣㔰攷㠹搲散搰㜱ㄹ㍥㔳㍡つ攸㠴捡㌹捦㌵敤晡㌳愴㔴愳㤷挷收㘴搵收㜴㐸改摢昵戳㐳ㄸ㜶㥢愳㤱㥢ㄸ㥡〹㠲㠶扢捡㤹㉤㐹挷㌹㈵㉤㥡㘸戸㜳㐱㜸搲昴摤㘰挰愵晦愴㉦敢㔵ㄹ散㜲て慦㔷愵ㄳぢ〶ㄹ昷㡣改ㅦ㌷㕤㤹㈶戳摢㡤收昰㘸㑤搶㐳㍢摣ㄸ㜴㑦〷昲㤴㔹㍦㉢㈹愲戹昳つ扢㈶搲㘹晣㑦愴㕥摣㙢㘴㙡愲㌰ㅥ户戴㙣晡愱捡㜱ちぢ扤㘴㕢㤶㡢戲愲㙤㕣㕣㔲昹㡥㔶㥣戳戲敤摥㉢晤扡㜴搸〹捤㍣搰㈱愴ㅣㄴ捤挳愶愷㥡收㜰㤶㐴㝦扣ㅤ㘸ぢ㝢搱戳㈰㘷ㄶ㝤ㅢ㘶㌶ㅣ搳㍦㜸捣慥ㅦㅡㅥㅡㅥ㥤㈸㡥㡥㑦㑣㑤㡤㡦㑤㑤㘲昹ㅥ㕣戰㔷愴㘳换㈰㘴㘵戱㌰㌶㌵㕥㉣ㄶ㠷挷挷㡢㔳㠵㠳挷捣㜵㔵㍡㌶㌱㌶㍥㍣㌹㔹㥣ㄸ㉤ㄴ㠷ぢ挳㐵愳ㅦ扡㡤〱昶㌲〸㜲㕤挹昱昲㘶㝥搵㕢㜵捣㜰㘵㈳㕦扡挷搸㐵㠱摤㈰㈲㝤ㄱㅢ户㜵㜰㙣㥢慣㤸挹捡㔲戲㔲㑤㔶㙡挹㡡㑣㔶慣㘴攵㙣戲戲㥣慣搸挹捡〳挹捡ち㘴㥡㈹搳搷㤷㡣㤳昶慤〷㉦㝤散㥥晣扤㑦㝥晢挹晤慦㥥晦㘲㑡㜰慦㜲㌹改搷㠱扣慡摢搸挲昸挸攸㘴㘱愲㌸㍣㌲㔹ㅣㄹㅥ㥥㙣户戶㌰㌹㕣ㅣ㠱挹㘳㤳ㄳ㠵搱搱攲挸愶挱〵戸㘶㝣㝣㙣〲晢ㄵ捣挴昸㠸㜱㍤昴ㅢ㝢搸搳㕥㤰㑥㠳㑦㤷㡤攷㔰攰戹㈰㐲晣ち〶搳㘸敦搶㝤㝦昶扦昹慥㤹㉦摦㜲昱戱昹搲扦㥥ㄱっ㉡㙡戴㌷㠰ㄹ敥ㅥ㙤㜱㘲愲㝤㠰㘳愳捤㈹ㄸ㥢ㅣ㌵㙥㘴ㄷ㌷㠱攸捦〷改ㅡ挳扤挶捤ㄴ戸〵㐴㠸㥦挶㘳搰愶愷攷扤攴㔷㡥㍣㌶昲搱扥散㙤摦㘹っ摣㠶敡㔷挶㑢㘵捥㌷捦㘱昳㙤敤敢㤱㈱慣㠱㉢〹㘸㠸㘷搶㤸㌵㘱ㄵち戵戱㘱㜳搴搴㌸愹㔷扡㜳㜲㤰ㅤ戰敥戳敢㌵敦㥣摡㑡㌷捦㥡㠱摣摡㔹〷攲扡㔹慦㔱慦〵捦敦㕤㔹づ捤㔰摥搴㔹户愵愴慢㔹ㄹ㠱㐶〶慡扦㕢㍢㥢㥤㌱㥤㠶㥣㔹户愳敡㕢㍡慡ㄱ㘶扣愵敤㙢㡦昸昲戵㥢戵㕤㈳㥡挱挹戴愶㜴㜷㔹ㄹ㔵㐵攳捡㤷㤶扤㐰搶搵昰づ戸㈷敤敡㡡昴换㤲攷㥡慣㈹㔳㥦挳慡㌸搶ㅤ㌸㔱㠷愱㠸㕥戵㝤慤愵搶攱昵㔰搶㙢戲㠶昱慥㑡㍦摣㔸㌴㤷ㅣ昹摣㌶㤱愸㑦㔴摣搸㔶㝣挴慢㌶㠲㤲㔷て㝤捦㘹慦㤹愹慤㤹㠸慦戵㘳㕥㑤㈲㍣愶㤹ㄲ㈲㤱㑡〹㤱戸慢㔷㡣愲摥㘰㐸㑤㐴换ㄴ㌳㕡摥搰扥散㠶㑥挱㍡㔸攱㐸慥挹攴晥换㈸㔳㝡愹收捥敤〵㕢㙣㈲〸愰昴ㅤ摢㑢慢㌱㙥捥摣摦㔷㌸㤹摣ㄳ㕢㝦㜸つ㘷搰㍤㘶扤收㐸㝦㐷〸㈳㌸㈲㈳て愲㕤挰㙥摥搶㝢㡣㠱㘲㕤㙣㘸攷散㕡戸慣㉦㑢晢散㜲㠸㌲挰㥣㑣㠶慥敤㑡挶㍥ㄴㄹ㉦㈴搹て㤲捤㈶昴摢㈹愴㘷㡤ㄷ㐵㜹㡤戱晤敡㑦㌷〲㈹㐳㥤愶㠰㍥㠱收ㅥ昱晣㈰㤵敡㘵攵㍤㘶戰ㅣ㜲㜹敥㔸挹㜳捣㜸㌱挹ㅤ㈰ㅡて㤵换ㅥ㥥㍣㜴搲挴〸㠳敥㥣戴㑣㈰㌳戵扢㠵愹戹搱㘱㍦㈷㠳慡㐱㔴㜰ㄴ㝢㘵㕤〷㠷捤㍦攰㜲昵换昵㜰捥っ捤㍥ㄷ昸〲戳㘴㐰攸㠰㙡ㄵ㜱㙣㌹愸捡㥡慤戳㜱づㅡ㜲㡡㙤搱搲慦ち㈲㑤搸㌸搸㉦㠹㔴㑣㜷㌶〲㘳㈷〲搰㍢ㄷ㝡㍢㑥〰㝣愹捤换晡攲挶慡っ㈸㥥搱㜷㜴㘵攷昶愲戲ㄳ搵愵搳愱敤〴㐳ㄸ改扣敦㌵㔶㥦㔱㍤ㄸ㤳㜱㈷㐸㌳㘹晦㡦㔵㝣攵㌶ㄱ攲昷慤㜱㙥㉡ㄵ㉣㘵攴㔸㘲㄰㙦ㄸ㕣慤㔰㜶〹㕦㉡ㄹ㉦挱㔷㜶愷㍡㡤换攲㙡㌰㤵扡〰戸昰搰愲㉦ㄵ㑡捣愸っ扣㍤攸摥攷昹㉢㑢㥥户挲昵戴㑢攵㠲㘵㈹㐳㈲慦晥ㄸ㘹㉡㐴㈹㐴㉡搵㠶㝣㕡㈰ㅡ㌱㥢㕥〰ㄹ㥣㜱㥣㝣㔳㘳愰㡦愰㈸〵っ愸㡦㠲戹昱昰㡡㔷昷㕣㝢挵慣慣㑤㔴㠰ㄱ㉢ぢ愵搲搰扡ㄳ戸攲㝦㘰㍥㐱挶㌷敥晣摤つㅦ㜶㥥㍡昶昸愴㜸摥㠵㕤㈷晦㈰晥㍢慥攸挲㑡㠴㌰ち户㡤㠳ㄱ晦〹戱ぢ昸㠰㙦㑦挶㈴昲挶ㄴ挹摤㈰〸づ捡摤㠸つ㉦㡢戲㠲㌰㠸昱挱㌸㐴昲㜲㄰㐱昴愳㈰摦㌴㤸㘶ㄲ晦〱晤㥣㜴㌵㜱挴㑤摤ㄳ㔷㐲㘹搶搸愱㑥㄰㔳㜱昲っ㍡换愰㝢っ扡㐶㍣つ挵㍤ㅤ昰愵戸愲ぢ㝥ㄱ㍦㈹〷㉣戰晤ㄷ㈰㜶〱ㅦ昰敤挹㌸㡥扣㜱㠲攴㈴㐸㡢〳㑥㐵㔹㐱っ愶ㅣ㔰愶搰㈲㠸㈰昴㔲づ㌸つ愶㤹挴㔳搰扦改〰㠲戶㙥〷晣㈳㑡戳挶づ㜵㠲㠰慥㤷〳㥥㠰昲㥥づ昸㜸㕣搱㠹晤戴㍣㌴㕤挵㤹慤㝣㘵㥤戱攵㌹〶㤹㕤ㄶ敥㑣愵㐶㄰㝡㉡㈲づ㕡㜳摥㜱㉦㥣戳〳㠰晥㡤㍤㔶捣摣户㉣敢挰㉢㍥㘰㑢㐷㤹户扡㉡㙢㠶㔵昶ㅡ㝥㔵ㅥ㥤㝢㌶攰ㄹ戸〳㔳愷愰㑣㔲㈰㕤摢ㄱつ戴㉤戰㑡㤰ㄲㅡて搶捥㐸慢㙥㙥㉤愸㐸戱挴挰扢户㍣扡㘸㠷㡥散户ㄴ㈲㔱㝣挶㠲ㄷ慢㉢戲搶㘷㉤㉥㈳〲捤つ㕡昳扥㕤㜳散扡攴㘴散㡤㐴ㄷ攴㔹〰扥㤳㕥㘰昳㤲㍣㘸㉤晡㘶㍤㔸攵搹㔵摤戸扥㉤愷づ㌹捤㥡戵敢〱扡㔱戳㐸㝥户㔵㕥昶捥攱〵愵攱搶攷捤搵攰㔹㌱㉢っㄷ㔱㔲㔳㈳㤲㈲㤹ㄴ㤹㘴收㕡攷㐷㕦㠲戶攷㙤㕤户昲㔸慢愱㙦㉦㌵攸㌴搵ㄱ愳㑡㥡㐴捤㘳㐲㈳㌴敡㍣愹㕡愶戱〳㘶㜲扣㙤㙦ㄱ㍤ㄱ捦收搳㤴㠲㜵㔵戶愹㠱晣挳晣改愳㕢ㄷ戰扦改㔵㐹㈳㤸扢㘲扣慢㐲㜶戴㡣㠸㠱戹慡戰㍢戱ㅡ㤸敢㕣㥡㔹㑢挹㜰㤵敥摡㘲㡦〰㌲つ㔸ぢ收㤲㜴㠰昴㕣㌳摣ㄵ㘵〸戹㕤搳〹攲扡㤲攷扡㈶㤷ㅤ摦㑥捡㔵搳㤱ㄹ㙢愶ㄱ㝡㜸㤰㌰㉣㄰戵㌶攳㈲㜳ㅤ㐵收㝡㠴挹慣㔳扣〱㉡㥥扡扣戳愶㙦㠷换慥㕤捤㌰挳㕢摡戳㘲扤㈲㠶愴攱昹㘶㙡挶㤳㑥㤰ㄷ㐱㉤㑣昷㄰敥㐵㜴ㅤ愷ㅦ慢㍡㈹㜴晣ㄳ搷㜸㐱㐰昴㔱㠷㡡㘱㐱㥢㐶〰捥㜰愴搲挵收㝢改挵昳㈸㔱〱㑡㄰摦戳摡㌸ㅢ㌳捣愴〹戱㜷㐴㡦㕣戳搹〵捦慣ㅤ㌱慢㜸〷敤㡢㕦㐱㌳㤸㕡㠶ㅢ㍦㐷㍣㕦挲ㄵㄱ㔷捦㌵扢㈶晤っぢ捡㜸㜷㑤昳㈶愰㐷㜳〸㘴㤳㑡㘸㕡㝦愶㔷㕦㐷㥢扡昶挷㈸愹昵㕤昷㘸㤷晥摦扥㜲㔲㘱㡤㙣㔶ㅤ㔳换ㄸ愰㘱㠳㠸㍢㐰㘸㑦㠷挰〳ㄴ㔸〱搱㠸㐹㍢攷愶ㅤ㕡〳㠰ㄳ㥥愵搵晢㈱㐱㝦〶〰㔹摤ㄶ㌴㘵㐸㝦ぢ捡搷㈳㠰㥦㘹㍥㑡敡㘵慣㜲㔹换㐶㌱㤶户〹㑥㐷㌲㤹挶㔴敢㥤㉦㈴㕤摤㐲㤹㕢㤶ち晥ぢ㐲㕥摤〱改攷㘶㠱晥㑡㜹㙣慡ぢ㐰㘴戳㠶㡡㘱㔹㐱っ摣㌴㥣㜸㈱昶㡣〷搶㔸〵ㄱ挴㝤㜹㝣㕡づ㉣㐱戰挷㐳㉢愱扦ㄶ攴㙡㠲愴㈰㐴㔴㜷㐸ㅦ㡣㈰㔶㘴晣搹㕣㡦扣㠲㕥㝥㍤ㄲ㔳慡昵搸㠸ㄹ㘶〴㠱㘵搳ㄴ戰㑤㔳搶挰ㅡ攷㐰〴㐱㘷て㠱㜵ち㙣㔰㠰㙢㠳ㄳ慤㍦〸戲攵挰挲㐴㉦〷扥ㅥ㌲㠹慣㈰ㄶ㙤㉡㙤㜱攰ㅢ㔰㙣扣ㄱ㐴㄰㌷收昱㘹㜵㈰挱㘲攴挰昳攰慥捡㠱㈷搰㐰㌹昰㈱㌰㠲㔸戳捤㠱㙦㐶挱攵ㅤ㐸㑣慡ㅣ昸㤶㤸㔱づ㈴㌰㙤㥡〲戶改挰户㠲㌵摥〶㈲〸㕡㝢〸扣㥤〲敦愰〰㜱慣㜲攰㍢挱㙣㌹㜰戴搰换㠱敦㠶っㅣ㐸㉣摢㔴摡攲挰昷愰搸㜸ㄸ㐴㔴㐹㤸㝢㙦捣愴昰慤㌱㜲㜵㙥挸慥㘰㤹㠶㔰搶㘲搸㉣㠷ㅢづ㡥㉡戲摣愰ㄱ挷㔰ㄳ㔵㈳㙣㜸㍥㝥㈰㑡㜷㍥㤸㙣戶扤つ慡晡昷㜶㍣㐶愹㘶慣愹攱愳昹㠰搰摢戶愷〵㕢㌷㔳戶㘱搲摦〷戲昷㤸㕤昵扤挰戳挲㝣ㄹ㔰㉣捦挷㍤㤸㌷㍣愳慤㐲㘳捦㍥㘹㔸扡捥㥦㈱搶㜸搹捤慥搴扤㜳㜵㌵ㅡ㉤攰ㅢ愷昲㔷㕦ㅦ扢攱㡢扥㑡㉦㠴ㄷ㜳㘷挱戲戱昱〱㤰挱㔴㡥㈱㤰㈹㘷㐷摦㠹ㅣ㘳ㅥ㔳㡥㜱㡦㐹㘳愸戸搲㈰㐴摤㘲㐹㔴㐵㑤挸㜴㕦㥦戸扤攳㈵慤㉢㜸㙤㍥㐵攸㍡㘳㤷㔶㠷挹㔷搶愸摤愳㙣捣㠳捣㜸㠴攴㔱㤰㙣捥〳攵㠰昴て㠱散㉡捤㔶㕡㌰㤸晥㘱㤴㕤㠷戲昶ㅦ㜹昴㡦愰㜸〰挵㉡㘶攳搷愳㐰㝦っ㈵搷愳〴昷敢收㡤㥢㑢㈸挷昰愸㕣愹捥㤲㝦㐶㑥晤戸ㄱ㕤㌴㔵㜸㘳搱攳㈰ㅣ㈹ㄷ慤㘰㜸攳挲ㄵ㑢戰㤲换〵㝣挲攰ㅡ攰㜴㡢搷愰㠴㔳摥㍥㘵っ㜲慡㥦㑦㠰挱㤴㌱愰㌱攵ㄸ搴㤸㜲㡣㘰㑣㌹㐶㌱㈶挱攰挴㘹ㄳ昷㐳ㅤ㕤慡㕣昳㐹㤴ㄸ㥦〲挹收ㄸ㥦㤴㔲扡挶愰㉦っ㕡㙥搰搸ㅣ攳㤶慡扣㥥㐵㑦㤱散㈱ㄹ〵ㄱて㤱㌰昷㤹㤸㔱㤶㌱敥㈸换㑥愱戳㙥换㑥愲戴摢戲户愰㤱敡攷昳㘰㘰搹㕢昱挵㤴㘳戴㘱捡扤㍤晡㑥攴ㄸ㕥㤸挴扢㐱㤴㘵挷㕢㉤晢〲㑡㡤㉦㠲㘴㜳っㅣ摢㕡挶㠰愲㉡㙦㘴㠳慦㤰摣㐴㐲换㜲㡣㉦慡昲慢㘰〶㔳ㅡ户挸㑢㍢搶㙦㙦㐰㝦愰昳ㄱ晤㌰ㅥ挵㌷攸昳ㄴ㤰㑣㜴晥愷㤳㜷㕦㥢㉥敥㤰㍥愸攲㐷㥢㠵搵㝦㠳㥥昶㍤㐳㡤っㄱ挶搷㐰㜶㍦〲愲挷ㅦ㝣㌵搳挵改㤸㝢㐵昴㥤㠹扦㜳昱昷摥㔷散收㙥㔳㉤晦㐹扣攰㠳㌳摡㡦捦㝦晣㡦㑦扤昴昶挷㍦㜷㈹晥㍥晦㤷扡晤昰慦敦晡攴昴愹搷晤搷攰ぢㄶ晥㘵晡搳敦㌸昰扥晢摣㑦㑦ぢ敥ㅡ〶晤捥㜷㥡㐳㌰昳㈲㍥㕤て㔵㉦㡢㉢㍡ㅦ慡㜲摣㘷㙡昲扥づ㘶㌰㈵戸㔹㌸㠱攲㙥戴愰搷㤴愱摦㐰挹㙥㙥㠳㙢㌳昴㔳捤㤶摢ㄹ晡晡摡㘳昶㔷㥦㜸晦戴晢㤳㠷㔳㑦㙦㝣㜰晡晥晢摦昴昸㘷㑦㍤㍡㉤戸㠹㝡ㄹ㍡ㄶ摢搳㘵㘸㌱慥攸㝣㤰捡㜱摢㈹㐳扦〵〶㠶㜲敦㈸㐳㐷㕡つ晤㌶晢攳慥戸㌶㐳戹㤵㜶㥣搱て㝤搷㔸摥攷晣摢昴扢㘶㕥昳昳晦摤昷敦搳㙦昸散搳㑢攷㝦昰㤹㘹挱㍤搵换搰㤷㙣㘷攸挱戸愲敢攱㠹扢昰㜲て㑦㉤扦捦戱㔳捤㘲㘴敥户愲㘲㙥ㅣㅣ敦戶攳愸㤳㜱〰㜷㐴ㅦ扦㤰㉤攰㌹〴㌷㐳㍣㡣挶愱ㅦ捦㈴㠴摣捤㕢㠸愱㜲㙣慣㕢㈷㝣㕣㑢晡慣愳〱㥥戱㙡ㄹ扣昰㠷㈱㝥㜰㝦㌶㕣㈰㠱㔵搲っ㌰扣ㅥ攱戲㤰散〹ㄳ戸收㜷戸摢㙦昹愳昹挳㔷㤲㔷换㙢㝢搱搲晦て㥤戵㐲搹㕡换㠳㐹㕡摣㠵㘹㡥㑥㠰㠷ㄲ㤷㌸㙣ㅥ搷挶昷昰愵㝦ㅦ㠴慦搷敡㔸〱挹ㅡ㍦㐰㐹㜴㐱扤ㅤ㕣㐲晢ㅡ㐸愷㠱〴㙦㐷攸㠱㡥㥦戰晡晢㘹㜵㌳〹㠶〳慥㈴晤㠷㈰摢て㙦㝦捦攱晤〸㙤っづ㙦㙢㘸ㄷ㔸挴㔱㈹㤲㄰㡣㈸ㅣ㕥㌳〹㙥㑢搵攱㑦挰㙣摦攱慤㍤㍢晣ㄹ摡㜴㜴昸㜳ㄶ戵㜴挸㥤摤摡愱㐶ㅦ㕥昱㈴昳〰搸㠳敤㄰晦昱ㄳ㥦㐳づ㌸晣搳愷㕥户敢昶搷愷㕦愰愹攰捣㔰㠷昱换㤸㘱㐶搰㑦ㅣ㠶昱㉢收攸㈲㈵昳敢㤸㔱㌲㌴㑤挹晣㠶愵戴㑡挹晣戶㔵㐶㜵㠱〲攳㜷㈰捤㤴㘳㔷㉡攲晤ㅥっ㈲㥥敡〴㙣扢ㄴ㍢㔳㔲ㄷ㈳㈹搵㑤㤷ㄴ扢㔳㔲㝦㔲㔲戹㘶㐷㠲扡㔵ㄸㅤ挴挴昰扣㤸㐵㐱㐶㈴〴搵愹㡡㠱㡥ち㙡㔰ㄵ晤敤ㄵ晤㝦〵㐹ㅦ㜰攱 | H27: 㜸〱捤㕣ぢ㜸㕣㔵戵㥥㍤挹㑣戳㈷㘹㍢㐲㉢愵攵ㄱ捡㥢㤶㌱敦㐹㐰挸扢㙤㘸摡㤴㈴㝤㔰挱㌸㐹捥㌴㐳攷㔱㘷㈶㙤㔳㤰㤶㐷㜹〹户摥㕡搴昲昴慡㠸㐰㉤㠲㔶㐵㤱㡢愵昵〵搷㝢慦挲㔵愱昷㝥ㄷㄴ㍦ㄵ昴㈲㝥㠰〸摡晢晦敢㥣㤳㥣㤹㌹㤳㍥挴敦㘳㤳慥慣扤昷摡㙢敤昵敦㝤捥㔹㙢㥦ㄳ㍣捡攳昱ㅣ㐴攱㙦㤶㔲㌲㈷昴㡤㘵戲㐶㈲搴㥥㡡挷㡤愱㙣㉣㤵捣㠴㕡搳改挸㔸㜷㉣㤳㉤㠱㠰㝦㈰㠶晥㡣㙦㈰ㄳ摢㘴㤴つ慣㌷搲ㄹ〸昹㍣㥥戲㌲敤㐵扦戶晥〵挷㉢ㅣ愵㑢㐹㈰攵搱㝥㤲㈹㈴㘵㈴㈲ㅦ㈰㔷づ㔲㔱〱搲摦摥搶㌳㜸㌹慣昷㘵㔳㘹㘳㝥攵ち搳挶〵搵搵愱敡㔰㙤㕤㜵㔳愸㙡㝥㘵晢㘸㍣㍢㥡㌶㉥㐸ㅡ愳搹㜴㈴㍥扦㜲搹攸㘰㍣㌶戴搸ㄸ敢㑦慤㌵㤲ㄷㄸ㠳㔵戵㠳㤱扡挶敡扡晡晡㘸㔳㔳㘳挵㔴㘸㕥摡摥戶㉣㙤㐴㌳敦㤶捥㘹搴搹搳摥ㄶ㕡㙡㘴摦㉤㥤搳愱ㄳ㉡㍢㔲㠹㐸㉣昹㉥㈹昵㜱つ敡㍢㡣愱ㄸㄷ换㌰搲戱攴㥡㄰愶㥤〳㌴㙡攱㔰㙢㈶㌳㥡㔸挷㜵㙦㌷攲昱㕥㈳㉡㡢㤴攸挸㘴㤷㐵搲㠹㑣㐵㠲昸ㄹ㘹㈳㌹㘴㘴愶㈵㍡㌷づㄹ㜱㑢㌰㔳㤶㔸ㄱ㐹㉦㡤㈴㡣㔲㌲搳ㄳ收ㅡ㜶つㅢ挹㙣㉣㍢㌶㌵戱㍣㘳昴㐶㤲㙢っ㡡昸ㄲぢ㐷㘳挳慡戴ㄴ㍦㥥㤲㌳摤㘶㈶ぢ㠵昹㈴摡㐷㈲改慣搴戸㠴搵㙥戲㡥敤㈲㕥攴捣㡢㕢慡㌲㙦ㄴ搷慣㉦㤶㔸㙣愴㤳㐶㥣㐶戸㤲昳昲㠴〴㈰㜳ㅤ挶㤱戲摤攱㉡愹㜲敢㘲愱㉦戴攲て㠲㜴昴愷㘳㜰㜳㌴ㅥ㐹捦㕦ㄲ㑢㕥搰㄰慡慡慢愹㙡挴㌶慣㙥㙣慣㙤慡〹捦敦㡥慤㌵攲㌱㈳㤳㐵㕦戸扡戶慥㈶㕣ㄳ㙥㙡っ㔷㔷搵捥㕦ㄲ搹㜸㐱㌸ㄴ慥搷敦㠳㈶㝤っ㜵ㅥぢ㜲挲愲㑢㍡㝡㝢㔶㜵㜵㔴㜶㜷昵㉦㕡晡攴㕤㤵㑢㝡㤶昶戰昱挹慢晢昵っ捡捥〴㔱愵扦挳昵散㥣ㄵ慦㈹敦㐰挴㍢㌰攸ㅤㄸ昲づっ㝢〷っ敦㐰搴㍢戰挶㍢㌰攲ㅤ㠸㜹〷㉥昷づ慣㠵㡣㕤捡愶㑣昱㕡攵㤴扦晥㜵捤㌵换晦戰昰搶愹㘳昷㜷敥㝢㙢戵攲㈵㉣㜷㠰攳挰㌴攵㜹㔹ㅤち㌷㍡ㅣ慢づ㌵搵搷㌴㌵㠵慢㙡ㅡ攰㔸㝤戸愶㑥㕣慢〹搵㌴攸㔹ㄸ慥㡦〷昱捦〶㤹搳戱扣慦㙢摦㉤㑢㕢㤷㔶慥敥㕡摡㐹慥晦㤲捡摥㥥搵晤㍤㡢昵ㅣ㡡㥥〰愲搴㉦攱ㄹ扤㍢昰㥦摢摦昰㕦㌶户攵扥㑢㥦晦搵攳㌷㕦㝦㤵攲㑤㐵愶㜵ㄲ㤸㜰摥戴㘰搰㌱慢㥡㔰㕤㜵㐳㘳㙤㙤㘳㑤㔵戸扥戶㍥㕣㘵捦慡㔱㥦㑣㑢㤵㈰晥㔳㐰愶户戶㜷昶〳㕡㑣愹㜷㜱捦搲攵㝡㉥扢㑦〵㔱敡㠰㌵㤱㥢摥晥散昹㥦㝣改慢敤て㌵搶晦敤㐷㍦㘸昷㉡摥搸㘴㈲愷㠳㤹㤷㌷ㄱ摣扡慡ㅤ㌳愹づ搵搴〸㈲搵㤸㤲㍥㠳摡捦〴昱㥦〵㜲㙣㝦㘷㝦㙦㙢晢愲敥㥥㕥㉣㜸㝦㔷㝦㉢㈶㜰㌶㐵捥〱㔱敡㔹㙢〲㌷摥晤㡤㥢㥡愲扢㤷㝣敢搲㠳扦㝡搱㜳敤㕥挵㥢慡㑣㘰㍥㤸挲〵慡慤捦㤹㐰㕤㘳㔳㜵㐳㔵㑤㙤㑤㔳㘳㔳㝤戸㌶㙣㑤㈷㕣愳捦愵慤㄰㠸晦〳㈰挱㥥㔵㤷昴㉤敦㕥㌰㌱㤷㉡昶㔷㠳㈸昵㘳㙢㉥㑦㍦㕥扡敢㡤摦扦摡昳昵㔳㡥昹扦ㅢ㘷摥ㅤ㔱扣㙤挸㕣㙡挱㉣捡〳愳㉡搴搰攴㤸㑢㔵㈸㕣ㄵ㙥㙡愸慥慢愹愹愹慢㙡慡慢㙢㌴㉦〴戴㠷ㅢ挳昵攱晡㠶扡扡㠶晡慡摡愶㕡㕤㐷搳昵㈰晥〶㤰㘳挶㉦㡢㡥摥搶扥捥㙥㕣ㄸ㍡㑣㠹㐶㄰愵扥㙦㑤㙥敢捣攸收晥扦敤㕦㜴昵㥡㜷昴捤㙦昹㡥㔳㝣收挸攴捥〳搳㔵㌰戹㕡攷㑥慥ち搵㌶㔵搵㌷㌵搵㔵搵搷㠶敢㙡慢㌱㍢㐱慡㉡㔴㔷搳搴㔰摦㔴㕢㔷摦㔴㕤ㅤ〶慤搵攷搳昶〷㐱晣ㄷ㠰㥣摣昷攴慤扤搸搶晢扦搳搹摤戹ㅡ摢ㅡ㤷敤愲捥㘵晤慤昶㜵㝢㈱挵㥢㐱㤴㝡挲㥡敡ぢ昷㔵戴捦晤敤戴㈵㜷㝤敡㡥攷晦昵戳敢扤㡡㑦㐶㤹㙡㉢㤸㠵㜹㔳㙤挰攵㔴つ攴挲戰㕦搵搰ㄴ㙥㙣㜰愰摡㠰㑢㌰㡣㥢㑥㔳㔵㘳つ㉦挵〶㜳挳㌵㠶慡㙡㜵ㅢ㉤户㠳昸㍢㐰㡥㕤㝣〹挰敢㕡摡㕡搹摡户戸愷户慤㘷挵㤳㔷敢㑥㡡㉣〰㔱敡㔱㙢㜲ㅦ㝢攴慤戳摦㝣㝣㐱昷㤶㝤摦昰㉣晢搹㠷戶㈹摥㕤㘴㜲㡢挰ㄴ攲㔸㥦扢挸つ戸挱㔵攳㕥㔰搵搸ㄴ慥㙤㘸愸㌵攷㠳扤㤰㜳て慣〱㡥㕤戴㝤ㄱ㠸㝦㌱挸捣昱改㉤攸改㕢搰搳换㝢〴㈶搸㑤愱㈵㈰㑡㍤㘲㑤㜰扡ㄱ慢㘹改扣戰晢攱晢㝥㜵攷敤搳㝦晣㤹㡡ㅥ㜴㕦㙣摤愴㍢搲㤱つ㜸散㑤㍣㔱㙢㐲㔵晣敦搰愱〴㈲㠹㘸㝤㌴ㅣ慤慥ㅥ慥慦㡡搴㐶㝣扣㌹ㅦ敥㌳㡢㡦㠴㡡攸捡㔸㜲㌸戵㐱ㅥ㘲㈷戴㐵㌲挶挴㌳㙤㥥搵搷㤶ㅡ㑤づ㘷收戸㜷昶㘵㈳㔹㘳㜶㝥摦㠴㤲㠲㘱㝤㜸挴ㅢㄹ戱㜷㔲晥戰ㄵ㤱昸愸搱扡㌱㘶㜶㥦㤸搷㡤〷㝣㙡戰㜸敦㠲戴昱搱昱摥㠲ㄹ戵㈲㘲㕣㉦扡ぢ扣㌴扢捣㜹㔵戶㡦愴㌲㐶㔲愶㌷㉦戱㉣㌶戴搶㐸昷ㄹ㡣㌷㡤㘱㜱㜵㈶扢慣㈸㘳㕥㑦ㄲ㡥㈲㙥ㄸ㥥敢㙣㡤㜶㙥捣ㅡ挹㘱㘳ㄸ昳㕤㘷愴戳㘳晤㤱挱戸昱晥ㅣㄱ搳㈶㍡㡥捦㘹㕥㤰ㅡㅡ捤戴愷㤲搹㜴㉡㥥摢搳㍡扣㍥㠲挸㘶㜸㐹㙡搸㐰㘰㔲捡攲㔱㥥㤲ㄲ愵㍣攷戸㐵〷搴㥢〹挹㐲㌸㤶㤸㜱捡慣摣㙤ㄷ敡㠵㜷昰㈲㙥㜰㑦㝡㑦㍢㠴㌲搱㑢㌵㘷ㄷㄷ㜴昸挴攰㥣搲㘷ㄵ㤷㤶㌹㡥慦摣㍦㔶搸敢㍤搶昲扥㜳㍤愲扦㐵㤱攴㜰摣㐸㑦㥡㕡㈸捥㐸㉦〳昱㍤㠴慢戹㈸㝡っ㐲搴㐶㌵收摢㄰ㅢ捥㡥昸㐷㡣搸㥡㤱㉣摡㤰㝥㤴㤵ㄱ摡㠲愲㝢搱愴晢㐸晡㐱〲〱㡦㝦㌹㠵晣〱扤挲慣晢ㄸ㘷ㅤ㜹㕣㈹〹㡥挴戱㐸㍡㌲扥挴㠲㔴㍡㔳㔲攲收攵愲㐸㘶㈴换敤㌹㘹㈷㈳㐸扤㤲㘴ㄵ㠸㡦㔱摤㈱挳搶改㄰㉡㘵㜴㍥㌵搱㘱㐴㈳挸㠹攴敡㔶ㄱ㕦挲っ戳㍢㡣捣㤰㘶㍣摥㠵㙢㘵愳ㅦㅣ㉥晥㡡〴㜷扦戱㌱摢ㄱ挹㐶愶㈴㄰搹㘳㤵㌴㠴收挹㈸㤳攳挸愹搲㘶㡦づ㔸㌵㘸〸ち敢搰㔲㉥つ愶㈶㕣㌸戸㕥㍣㈵ㄶ㥤摣〹捣㥤戱户㍦㝦愳攷㐶攸㐸ㅣ㠶ㄷㅡ挹晥戱㜵㐸㍢㈰㕥收㥦ㄴ捡晣换㡢捡㝡㠶〶㤷㘷㘳昱㑣〸㌳㕤㤸㑥㡤慥㝢㌷昵㔰㤷扥〴挴㉥扥㉦㘲ㄷㅦ扥㑦㑣扤愷慣攷摡っっ㜸捡愸㡤㉤㥡戱扦收㙥㠵戲㠳昸㈵㐵㕦㠶㕦㠱挹晡㝣㑣〶㡥㈴㥢㘱っ㕤㤱〰㐲晤㘹㐳昲戳㌲愹〰敤愹㠹㤵愹昴摡挱㔴㙡㉤昷搳㌴愹㘵㐶っ㈳换㥣愷摣捡昱㈴㤷㔳慡愴㈴㈷昵㜰㈴㐷摣愶晥〸挸搴搶㜸扣搲搶㤸昱て愲愹〴搹㤷㝦〸捣昱㥤㙢㔳挹㔴㈲戶㌶㌲戰㍥㍣㠰散㙣愰扢扤㍤戴㌱㥥㐹愸㍢攱㍥㠳晦㙤㜷昶㠶户敥戹戹攳ㄳ晦搳扤攲挴㐷㜷㍣愵敥戰㍡ち㤲ㄵ㈶ㄹ㤲㐳㐵挱愸㥤㄰攳㙤〵㝣㙥搱㈳愸敢ㄸ挹攵㈰戸㌹〸摣戸㌷挴捤慡㘲愲挲晢㠳㑥㤰㈴㐱ㄴ戳ㄲ㕥㥤㍡〵㘲ㄷ昵〹攸攷愲换挲㌱戳㈹㕣戸っ㕡〳㝡㤲㍥挵㕣㠷㡢愷〹㤶㈶㍣㥡搰愸敢愱搸ㄵ㠰慤㔶㐷㐱㕡挴㠴㐶〰戸㤲攳慦㠵㤸㍢〰㔷搱挶㘶㤲㉤㈰づ〰慥㌱慢慡ㄲ扦〵㠰㙢挱攸敢㐰搴㕣㄰〱㘰㉢ㄸ扢愸㑤戰㌱づ挰㈹㘸㉥〴攰㈶戴〶昴㈴㝤敡㔴㐸戸〱戰慥ㄸ〰㈹慢愳㈰ㅤ㘳㔲㈵〰㙣〷愳ㄲ㐵〱搸㠱㙥㝤ㅢ挹愷㐰ㅣ〰㝣挶慣㉡㈶㘶〲挰㑥ち摤づ愲捥〶ㄱ〰敥〰㘳ㄷ㌵散〴㠰㤹㕣㈱〰昷愰㌵愰㈷改㔳捣昱摣〰㔸㕤っ㠰㑢慣㡥㠲㜴昰㕣㘸ㄲ〰扥〴㐶慤㉣ち挰〳攸搶て㤲散〲㜱〰戰摢慣慡㄰㝥ぢ〰て㔱攸㉢㈰㡡㈹愰〰昰㌰ㄸ扢愸愵㑥〰㍥㠰收㐲〰昶愰㌵愰㈷改㔳搵㤰㜰〳愰愳ㄸ〰敤㔶㐷㐱づ㕡〷㑤〲挰攳㘰㔴㙢㔱〰㥥㐰户晥㉥挹㕥㄰〷〰晢捣慡慡挷㙦〱㘰㍦㠵扥〷愲㤸㘶ち〰摦〷㘳ㄷ搵攸〴㠰ㄹ㙡㈱〰㑦愱㌵愰㈷改㔳㑣㕥摤〰〸ㄵ〳攰㕣慢愳㈰捦㘵㍥㉡〰㍣〳㐶捤㉢ち挰㝦愱㕢晦㡣攴攷㈰づ〰㥥㌳慢㡡㌹慤〰昰㍣㠵づ㠰㈸㈶慦〲挰㝦㠳戱㡢㥡敢〴㠰㐹㜰㈱〰㉦愰㌵愰㈷改㔳捤㤰㜰〳㘰㔶㌱〰㡥戳㍡ち戲攷㌶㘸ㄲ〰㝥〷㐶捤㉣ち挰㉢攸搶扦㈷昹〳㠸〳㠰㔷捤慡㙡挷㙦〱攰㡦ㄴ㝡つ㐴㌱㐱ㄶ〰晥〴挶㉥慡挲〹〰㤳敢㐲〰摥㐴㙢㐰㑦搲愷㤸㜶扢〱攰㉤〶㠰戲㍡ち㌲㜴㘶搲〲〰攳〹㜵昰㙦挵㥥〲㕥㜴敢ㄲㄲ扥〵㜰〰攰㌷慢敡㈲㈸ㄲ〰愶㔰愸っ㐴㜵愳㐹〰搰愸搹㐵扤〱ㅢ攳㑦〱愶敦㠵〰㑣愵㑥㍤㐹㥦㕡㠲㜱㙥〰扣〲攵慥㡦挱㤷慤㡥晣ㄳ〰ㅦ㌳㡡㈳挸摣捡㌹攱攸㡡㤸戱㠱愱收戴㈸捥慣摢㐷㌳搹㤴挴挵㔳愳ㅤ愹愵愹㙣㐷㉣戳㉥ㅥㄹ㍢㌶㙡㌱㉢㐷㡣㈴戲搶㌴㤲搷扣戶搴扡㜵挶戰㡥昶愵㐶搳㐳㐶㔷挷㝢㈱慢㠵㝦㔸㍡㐹㘸扤ち攵攸ㄲ㌵㥣戹㈸散ㄲㄴ㡦慦ㄷち昳攳㙤㌹㌹㜷攴挶挲〶㈱㌸㝤〲搱晥㔸㌶㙥㤴㐷㈵㉦ㄵ扥㉣ちㄴ㜱ㄴ㌰㍣㈵摡㍦㠲㌸戴㘳㙡㜴㘱㍡㌶ㅣ㡦㈵つ㉥挶っ㔳戴摢㔸㠳戴㝦㔹㉡ㄳ攳㑢㡡愹搱晥㜴㈴㤹㔹挷っ㘶㘸散㤸㥣㥡愴㍡扥㘸㕢㉣㤹㠱ㄹ㔹㐵昲搳愳㝤㈳愹つ㜸扦㌵㥡㐸㉥㡣慣换扣㈷㔶㘵攲ち㤲愵㔱㕥攵昵慡㌲㙦搹搱慥㡦晦晤搰㜸摣挴㜱㘱㈵昶㙡㌶ㅤㅢㅣ㈵㘸摣〲㥥ㅡ晣㉢㈵㤱㜵昴昸㤸㈰攷攷㉢㡥㘵捣㍢㙣攰㝣㜳摥〵戹收扤攳㉦づ愷㐲㕣ㅦ㠷㐱ㄵ戳㐰㉥㕡戸扣㙢攲ㄸ敥敦㝡慢攷敢㠷收挳㍥昵攰㉤㘵㥡戹㡤㜸ㄲ挲㕤㠵慢ㄳ扢㠱戵晣慤ㄹ㠸㡡っ㜷改戴〹㜶〱ㄲ攷㡡㘸㜷㘴搰㠸㈳摦㑦㐴戲搳捣ちて㕥ㄲ㤱㜸挶敡㙢㑦㈵ㄲㄱ㙥㍢扥扢敡ㅢ㡡挴㡤戲㘸敢㘸㌶㠵ㄷ㐲㍡ち㈲㝢搳㙡㡡㙣㐴㔳㘴愳㤹㤹㐷㝢㜹づ㈸㍣㜵愵搶㐴搲戱散㐸㈲㌶㔴挶ち捦敡摥ㄳ晢ㄵ昷㤰㔲㠰㘹ㄷ晢㝥㤲㥦敡㥢〹㌷㤶㍢㠴搳㌱㐲挷攵挷慥挶换ㄲ晣愷㡥昲㤸〸㜷ㅦ㜹愸攸搹搰收昳㘲ㄲ扣ㅤ㐹㜹搵㝥㥢晤敡㘶戴挸つ㑡慤愰〰晥改㌹愰㘴昸慦㤴〷㉤㤳㥥㈱昰㙤㑡愰㍢ㄵㄹ㕥㄰ㄹ挲㝢攸㈹搶㕢攸㌲㉣㉤㙦㌷改㈰㑦㜵摡㜱㔰㠸〳挸昵戱㘱㈳㕤挶㠶㍥扣ㄵ㉦攵㜹㤰摦㕣㐳攴户㈵ㅥ㥦慦扣捣捤㔶㤷慤敢㌴㉢㔷㜶扥㜵敦㉡搰晦捡挵㡤っ㡤攰㤶㍣愶㑥㠰ㅦ晡㐴晡戴ち㡤昴㈷㑦攰㈴ち㥣っ攲攳挹㐴晥摡攴ㅥ戰攰ㄸ㐶㐳愸㔴摥摦昲攸愷っ挷㈴㜲㘶攴ㄳ㐷捡ㅤ㘷㍤㝥昳㤸愷捣㝥㈹散敦挳㉥㌷㠶〳收㍤㤶㘷㑡㕣づ慦户ㄴ㑢敤捦㍦㈷㉦㌰ぢ㘵㠹㍥㐳づ㠱搴㌴㑣挱㕦㠹挱愷昱㘲㠱晥㠱昱㌷㍣㙥㉦㍥㤷㐳ㅣ㤱捦㐱晣㤲ㄲ〸攸戹ㄸ散〹㈸ㅥ㤱搸㠸昰㜰挳㠲散㔴昴敡搳㐰ㄴ㡦〵ㄸㅢ㌸㥥㘴㡡㘷〱㝣㥡㜹晣愷㐳攴㐸敥㥥㉡㠶㔱扣㠳敡㌳愸晣㜲㜰扣㌱㡤㙦搴戳搰㝡攸㡤捡㈳〷〸㝡昴搹㔴㘲㔵㔴〲㡣敤ち㔸摢㤵㜳㈰愰攷㔱㤰昷㜳ㄷ㠱昹ㄴ㌸㤷〲㍣愶攰づ昰㠷㔰㍢搵㐶㜶戲昷慥㉥挰㔶㘱㉣㠰攵ㄱ㠶㙤捣〱㙣㌵㡤搵搰ㄸ㡦ㅢ昲㠱攵ㄹ㠳〹㙣㉤㐴㡥〸搸捤ㄸ㉡挰搶㔱昹ㄶ搴㜲㠰㙤㐰敢愱㠱扤〶挳㈰攸搱㘱㉡戱㉡㡡攷ㄹ戶㉢㘰㙤㘰ㅢ㈱愰㥢㈸㜸㥤扢挰㜹ㄴ㌸㥦〲㕢㈱㈰挰㝥㄰戵攳㙣㘰昳摦ㅤ扢㠰㜹㈱攴〱收㑤づ〳づ㌰㥢㘹愰㠵〶戶㐳㈰ㅦ捣ㅤ㘸㌳挱㙣愵搵㈳㜸挶慢摢㌰㔴挰㙣愳昲㑦愱㤶〳㘶〷㕡てつ㈶㡦㐵㈰攸搱㥤㔴㘲㔵ㄴ捦㐶㕣挰㕣〰〱扤㤰㠲㍣㌷㜱ㄱ㔸㐴㠱㉥ち昰㈸㐵挰扣〸戵㌹㌶㤸㙥敦挲㕤〰敤挶ㄸ〰㝡㡦挳㠸〳搰㈵㌴戲㤴㐶㜸ㄴ㤲て㈸捦㍦㑣㐰㝢㈰㜲㐴㠰㍥㠸愱〲攸㌲㉡攷昱㐹づ愰扤㘸㍤㌴愰扢㌱っ㠲㜸㐷㐱㈵㔶㐵昱慣挵〵慦㝥〸攸攵ㄴ晣㡡扢挰ちち慣愴挰挳㄰㄰㐰㔷愱㌶换〶戴攰㙤扥ぢ㥡慢㌱〰㘸敥㜱㔸㜰愰昹㈱㕡戸㤴ㄶ㜸慥㤲㡦收ㄳ㘸㌳搱扣っ㈲㐷㠴收㜷㌱㔴搰晣㌰㤵昳㉣㈶〷捤㡦愰昵搰㘸敥挳㌰〸㝡㜴㠴㑡慣㡡摡て挶〵捤㐱〸攸㈱ち昲㔰挷㐵㘰㤸〲〶〵㜸捥㈳㘸㐶㔱㥢㙤愳㌹晥㜸㥡昸〰挱〵捦ㄱっ〱㥥㑦㌹㙣㌸昰㡣搱挶攵戴昱っ〴昲昱攴搹㡣㠹攷㕡㠸ㅣㄱ㥥㍦挳㔰挱㌳㑥攵㍣摡挹挱㌳㠹搶㐳攳挹㈳㈰〸攲戰㥢㑡慣㡡攲㌹㤰ぢ㕣敢㈰愰㍦㑡㐱㥥ㄱ戹〸愴㈹㤰愱〰㡦㡤〴捦㉣㙡㘷摡㜸ㅥ敡㤳〹ㄷ㜰搷㘳㍣挰㝤挱㘱搰〱敥〶昴敡㡤㈰㡡㐷㐰昹攰昲摣挷〴㜷っ㈲㐷〴㉥㑦㡢〴摣㑤㔴晥〷搴㜲挰扤ㄲ慤㠷〶昷㔵っ㠳愰㐷㝦㡣㑡慣㡡攲ㄹ㤳ぢ㜶㔷㐱㐰㌳慣㔵慦戹ぢ㙣愱挰搵ㄴ昸ㄳ〴〴摣㙢㔰ㅢ扦㤷㡥㝦㐷攱昸捣挳〵搰敢㌰〶㠰扥改㌰攲〰㜴㉢㡤㕣㑦㈳㥣㜰㍥愰㕥戴㤹㠰摥〰敥㠸〰攵改㤳〰㝡㈳ㄸ㔵ち㤲〳攸捤㘸㌸㌴愰㝥㡥挵挴昵挷㉤㠶ㄵ挵㌳㉢ㄷ㐰㙦㐱戳扥㤵㠲㘵敥〲晦㐴㠱㙤ㄴ攰ㄱ㤷〰晡〹㌰㈷摡扢㜵ㅣ搰㥣て㔳㕣㈰摤㡥㔱㠰㤴〷㕦昶㍣ㅣ㤰㝥ㄲ捤㝡〷㠸㘲㡡㡣ㅦ扣㡦戰㤸ㄲ㔴㝣㑣㜳昲愳昷㠲捣㡡改㔸㈰捡ㅣ慢㉦㍢ㄶ㐷㕥㑢㤶搱扣挹㌱㉦㌱扢㤱㘳愴搲㠰户㌴晦ㅤ晢昸搸ㅥ愸㉡㥦㤱昷晤㠲っ㘳て㔳㌸摦攵㌸㙦㉢㍡㥥ㅥ㑣扣捣攴ㄸㄶ晦愷搱㍥㘳㐹㙣㈸㥤捡愴愲搹捡㍥㥣摢㔴昲㝢㄰㠴攲㔵慤扥ㄱ㘸㜴戵㐹挷㑡㤳晣㘶㜴㍤摦㡦〶搶㈶㔳ㅢ㤲㌲ㅢ㕦㠶㥦挵搰㥡㥥㌲㠵㘶〲昸㈷攵㔴愰ㄸ㘴扡挷挱㝡㈷㤸愹㈵㐱收㑢㉣㐱收㑣挲㌰㐱ㄲ㠶㐹ㄲ㡢㙦㉥㤸挳捤㔸愸㕢つ慡㈱㌵慣㡣搲㈹㔳搴改㜹ㅦ㕦ㄴ㘴㍡攳㙦慦晤㝥㈶㍡扥㈸㕣㍥扣㐱㥣摥〴愲ㅣ捣慣㔷摦㠱㜶㝤㈷㐸㈰挸捣㠶ㄳ昲摦〵㘶㕡㝢摢㠰攳挰挶㝦㌷摡摥㠷戶摣㉦㜲晤昷愰戹〲捤㤲攰攱㔳摦㡣晦戳㘸㌹〶㉤㜸㈵㙢扦愴攵ㄶち㥥㠶㜶㠱㔲捥㤲㍦㠷㥡㝣㥢㙡扥㥢㍣〳㔵晣㜸昴扤ㄶ挳㑤慢捥㐲㠵ㅢ㔷慤㠶㤷摣㉥㘸昴㘸敥〱㉥户㕡㠵ㄶ㉥㜹敥㤲㌱昱ㄱ㍢昷㠳挱㤲㌱挹㘱〹㌲搱ㄱ㠶㔹㡤㌰捣㙣㔸ㄴㄳㄳ㉥㥢㕡〱㜵㠴㔴愰㜹㄰㉤㝡ㄷ㐸㈰挸摣㐴㤴ㄲㅡ㑤㉣㌴㍤搷㜴㌶挸㥣㐵㍡㘷㐱㤷㝥㠴敤挷㤳ㅢ愲㙡挹㌹㔸摢㠳㜶晣挸挷㙥㡡㌹㠷㜸㜶ㄱ㡣ㄵ㝡戶〸慤㠵㥥㠵㌱㐸散㍣ち〶㥥㌱换㘰〹㌲搳㄰收㍣㥢㘱㙡挱愲㉥〴㈳㥥㉤㜰㝡昶㙤戴敡挷㐰〲挱㘶搰愲㥥戵搸㥤㈷㐳㤷摥换㔱㤵攴挴戳㌶㔴昱攳搱晢㉤㐶搶慣〳ㄵ昱散㍣㔷捦ㅡ㕤㍤敢挴㈰㤹挴て挱挰戳〵昸挵ㄲ㘴搸㉦捣㈲㥢改戲ㄸ搵つ㐶㍣㙢㜰㝡昶ㄴ㕡昵搳㈰㠱㈰㈳昶愲㥥㌱㤲㤷捥㌳愰㕥晦㠴愳昸㡥搶昴㑣㈲㜱搶㥥㐵㍢㝥捣㌵敢〵㈷㥥㥤攳敡搹㔹慥㥥㌱ㅥㄷ㍢扦〰〳捦ㄸ㝢戳〴ㄹ㝦ぢ挳㘰㕢㤸㤵ㄶ愳㔶㠳ㄱ捦捥㜰㝡昶㍣㕡昵〱㤰㐰昰㐳愰㐵㍤扢搴敥㍣ㄷ㕡昵㡢ㅣㄵ㈲㈷㙢昶㘱㔴昱攳搱㉦㔹㡣慣搹㐷㔰ㄱ捦㘶扢㝡㌶换搵㌳挶挶㌲㠹摦㠲㠱㘷㠳昸挵ㄲ㘴㉣㉣捣戰捤ㄸㄶ愳㐶挰㠸㘷敦㜷㝡昶㌲㕡昵㉢㈰㠱㘰っ戴愸㘷㡣㙦愵戳づ敡昵㙢ㅣ㔵㑦㑥㍣㡢愳㡡ㅦ㡦㝥摤㘲挴㌳挶愷攲㔹挰搵戳㌲㔷捦ㄸ愵㡡㥤户挰挰㌳㐶愴㉣㐱㐶愵挲愴㙤㠶㘱㈸㡢㘲〴㈹㥥昹㥤㥥扤㡤㔶晤づ㐸㈰戸〱戴愸㘷っ㉥愵㤳㙦㕢戵ㄷ㜷ㅦ昹〴搸昴㙣ㄳ㍡昱㠳㍦㝤㐱㍢ㄹ昱散㑡㜰攲搹㕦晥敡㜶〷昹㌳㕡ぢ敦㈰っㄱ挵づ晦捣〶㥥㕤㐵㜵㈸挱捤㌶戳挵㘶ㄸ〳戲愸敢挰㠸㘷㙦㐰攵昸扤戱㥣㜳慣〰〹〴户㐲愰愸㘷㡣昲愴戳つ扡昴㌱ㅣ搵㑥㑥搶散㐶㜴攲〷㝦㜸㠰㜶㌲攲ㄹ愳㌴昱散㜷慥㥥晤挶搵戳㡦㘳㤰搸㌹ㅥ慡攰搹㉤㔴㠷ㄲ㘴㙣㈶っ〳㌱㘱ㄸ㡣戱愸敤㘰挴戳㕦㍢㍤㥢挳㌹㥥〰ㄲ〸㌲愸㉡敡ㄹ㠳㉤改攴晢㔱㍤㤷愳㉥㈲㐷捦㠲户搹㥤愷换㜴㝣㍢㔱㍦㍦敦搹敥晥㘶㘴㕥晥㌷愹㥤昸挶㜴っ㕡㍣㈵㌸ㄲ㌶て㔲㑢扤攷ㅤ㥤㉥㐶て㝣㡦挲㝦扥攷攰昵摦愱〷ㅥ㌹攲〹㙡㤴㠷挴㤹㤸敡昴㍢搰改㐷ぢ晦㌹捡慢捤㔶愵挵晣㕤㘶晤づ㕡扦㘷戴㑣扦搳ㅥ㜹㤹㍡㘵㝢慢敦㝦㌷摦昳挷〷捥㍦晤慥㠷づ㕡扦㌷㕦㔱戶戱㘱搶扣㔹㉤戵㔷㜴敦扥攵戹搹搶挸㤳㕢搴攷㌰㜲㈶昴敡〸挹㈰㠹㙣戲㘷攱愶敢晢摥㘷慣㡥晣敦扥㠲昷㐲㤳慣散戹戲㜸敡㝥搴戹㠰敡㈷ㄸ㐱搴挴搱て搰㔱㠶〸㐷攷攸㉥㝢㘴㔱㐷㘷散㕥昸挲愶㜷㥡㑢㜷㡣晤晢㔸昳挱㘶愹捥昰戶愸㐷㌰搲捤搱㝦㉢收攸搳㔶㐷晥昷㕤挱㍤搰㈴㡥搶㥢㡥㍥㡡扡㌸晡㈳愷愳㘱㍡晡㙤㝢扡挰搵㔱づ㘳㐵ㅦ戳㐷ㄶ㜳昴昶㥤㉣慡攵〷晥㡦晣㜹搷昲㤲㤶愸ㄴ㝦㡢摡㡢㤱㙥㡥敥㉦收攸㍥慢㈳晦㍢慥攰㝥㘸ㄲ㐷㉦㌰ㅤ晤㈱敡攲攸㕥愷愳捤㜴㤴〱挴搱慤攸搳昶挸㘲㡥㍥昹晡㔹㤷㙥摢晢挷收慤㉦㕦晣捤㤳戶晥愹㜹摢㕥㌶扣搱慣㝥㠲㤱㙥㡥㝥愷㤸愳㡦㔹ㅤ昹摦㙢〵㥦㠵㈶㜱戴搳㜴昴ㄷ愸㡢愳摦㜲㍡扡㤰㡥㍥㙦㑦搷戱㥣㘰て㘳㐵て搸㈳㡢㌹㙡慥攸敢捤愳戳㙢㜷敦晣改㥢㤶挳㙦㌷慢ㄷ㌱搲捤搱㍤挵ㅣ晤㥡搵㤱晦㕤㔶昰㈵㘸ㄲ㐷㤷㤸㡥㌲〸ㄱ㐷ㅦ㜱㍡摡㐳㐷ㄹ㕥ㅣ摤㡡扥㘲㡦㉣收愸㜹㑤晥扡㜹捥慡戵㕦扦晢扥㕦㌷㕦户改挰摢㍢㕥晥㑤戳㝡つ㈳摤ㅣ晤㜲㌱㐷㜷㔹ㅤ昹摦㕦〵㕦㠷㈶㜱㜴戹改攸㕢愸㡢愳て㌸ㅤ㕤㐹㐷ㄹ㙤ㅣ㥤愳敦搸㈳㡢㌹摡㡢つ晢昲挵㍦㙦晥㡦〳㝦戹㜷挷挱㥦㌷捦㍡攳晢扦扤㘹昳昳捤昸挴挰摤搱㝢㡢㌹晡〵慢㈳晦㍢慢㈰愳ㅢ㜱昴㌲搳㔱㠶㈸攲攸攷㥣㡥づ愰㜵㍡㠳㡦愳㜳㤴ㄱ㡢㡣㉣收攸㠵捦㉤㔹㌷愳攲昸㤶㥦㉥晣挱㤵㌷㍥㌳愷㐵慥搱改㤵㉤㡡愱㡢摢㡡摥㔵捣搱㍢慤㡥晣敦愹㠲っ㜶挴㔱〳捣搴ㄲ挵㠸㐵ㅣ扤摤改攸ㅡ戴㑥㘷㉣㜲㜴㡥㌲㠰㤹搴搱ㄷ㌶㜱昳扥搸㝣捤㍢て㥥戲敢㠶㕦㌶敦扤敤昳㡦㝦晥㡡㤷㥡ㄵ㈳ㄹ㌷㐷㙦㉢收攸づ慢愳攰扢㈹挶㍥㠷晡㙥捡昱㐷㐶搳㜱昷昱㐵㜹㔶㔰ㅥ㌵㥢ㄹ慥攰挰㈹ㄶ㡦换㔹㑤〵㍥㜱㐸攳捦㝣扡昱㌵て㍥㙣挰搷摤搶㘱〴扥昲攱ㅢ㘳晢㈵扡㤶ㅡ〷晢愳㍤㘹扣㔵㥦ㄲ敤捡攰㉢慣攱㌲晣㤹㐲㌶㡢扦搷㝤㉦㝣晦㠰搳戳㔲〰㠴㘲㝥昹攰㝡㜰挵ㄳ愹㐹㍥㑤㤹挰挳晥敢ㅤ㉦扦㡣㌸扡て戲晣〹㑣挷㜹摣㍡散昸摥愷㔴㙤挷㌲㥢ㄹ挵ㄶ捦㐱㤹㌷づ㤰㜴ち㘳㈴搸㤲昸ㅤ㈴愰㍦捡愶攵㤰㄰攲昱㌱㈲捣㜷㡥㐷㠹ぢ搰敥挹晢ㅢ㥣昲㜲晢愸㡦ㄶㄴ〳㌰敥㈲㝦〶愴昸搴㙥㜱㥤摡㈸挶攴㑤㙤〳㥢㈶愶愶ㄸ挳㜱㝡㜶㔱っ㠴挴㈰㈳敥攲〶慦㜷㌵㜸〵挶攴ㄹ晣ㄸ㥢ㅣ〶ㄹ㑢攵ㄸ㘴㐰㈲〶㌷㠳㈹㙥㜰㡢慢挱慢愹㝤㤰㤳挷晤㥢㈴愰慦㘵㤳挳㈰㘳㥡ㅣ㠳㥤㘸㄰㠳㕢挱ㄴ㌷戸挹搵攰つ搴㍥㤸㘳昰㈶㌶㌹っ㉥㐴㍤挷㈰ㅦ搰㘲昰攳㘰㡡ㅢ捣扡ㅡ扣㤵摡〷㜳っ㙥㘳㤳挳㈰㥦昱㌹〶昹愰ㄴ㠳晦っ愶戸挱愴慢挱㑦㔲晢㘰㡥挱摢搸攴㌰挸㘷㙤㡥㐱㍥戰挴攰愷挱ㄴ㌷㌸攲㙡㜰㈷戵て收ㄸ扣㠳㑤づ㠳㝣收攵ㄸ㌴搰㈰〶敦〲㔳摣攰愰慢挱㝢愸㝤㌰挷攰扦戰挹㘱㜰つ敡㑥㠳㍥㕥攵㠷㝤ㅢ攲㕥㍣ㄶ㌷㙣敢晦晤挱敦捤收挵昹㝦晥㜰晢㝣㈹昷昳扥捦挳㡥攲晤㠳㍡昴ㄷ㉣㠶ㄵ挵慢㤹搳搰昷戲㤵ㄷ戲挸㝣搱㘲㐴㠶ㄷ愰挸摣挷㔶㕥㝢㈲昳㈵愷っ慦ㄹ㤱戹㥦慤扣㕣㐴收〱愷捣つ戶捣㠳㙣攵づㄷ㤹㕤㑥ㄹ敥㑣搱昳㘵戶㙥戳㘵㜶㍢㘵戸㤹㐴收㈱戶㜲ㅦ㠹㥥慦㌸㘵戸晥㈲昳㌰㕢戹昴㈲昳㠸㔳㠶㑢㈶㌲㕦㘵㉢㔷㑢㘴扥收㤴ㄱ攸㠸摡ㅥ戴摡㈵㐸〸㈵搶昸㍡ㄸ挴ㅡ〲㕥㠱ㄴ㐱ㄴ愹㙦㥡㔲〲㕦㠱ㄴ㘱ㄴ愹㙦㤹㔲〲㘰㠱ㄴ㠱ㄴ愹挷㑣㈹㠱戰㐰㡡㔰㡡搴攳愶㤴㠰㔸㈰㐵㌰㐵敡〹㔳㑡㘰㉣㤰㈲㥣㈲戵搷㤴ㄲ㈰ぢ愴〸愸㐸敤㌳愵〴捡〲㈹㐲㉡㔲摦ㄳ愹愰つ愶㈲㝥ㄲ愴㌵攱愲攲ㄹ㐰ㅢ挶㤶攱晤㈵㈱㤳㡥挶扣づ愲㈴ㅤ攱扣づ〲㈳ㅤつ㜹ㅤ挴㐲㍡敡昳㍡攸扥㜴搴攵㜵搰㘳改愸捤敢愰㤳搲㔱㤳搷㐱扦愴愳㍡户愳晣晦〱㜰捤㝥㈴
A28: Decisioneering:7.0.0.0 | B28: Decisioneering:7.0.0.0 | C28: Decisioneering:7.0.0.0 | D28: Decisioneering:7.0.0.0 | E28: Decisioneering:7.0.0.0 | F28: Decisioneering:7.0.0.0 | G28: Decisioneering:7.0.0.0 | H28: Decisioneering:7.0.0.0
A29: CB_Block_7.0.0.0:1 | B29: CB_Block_0 | C29: CB_Block_0 | D29: CB_Block_0 | E29: CB_Block_0 | F29: CB_Block_0 | G29: CB_Block_0 | H29: CB_Block_0
A30: 㜸〱敤㕢㜹㜸㔴㔵㤶㝦户㤲慡搴换㐶㔸㤴愵㔱㠲㈳㙥挱㐰搸愵ㅢ挹㐶㈰㈴㤰㐰〲㉡㉥戱㤲㝡㐵㑡㙡㠱慡ち㄰搱㘹㕡㙤挵㙥㕣愷扢㙤ㄵ㤷〱㝢搴㜶愵晤挴㡤㑦㐷㐴挵㤶㙥㤵搱敥㔶ㅢ㐶摣㐶搴戶㥤捦愶戵ㅤ㤷昹晤捥㝢㤵㝡㔵昵㉡㈲㍡昳昱㠷㉦愹昳敥扤攷摣㜳捦㍤敦摣㝢捦㍤昷㍤㑤㘹㥡昶㈵㉥摥㜹攵㌳㌱戲慤㌷㥥㌰挲㤵㜵搱㔰挸攸㑡〴愳㤱㜸㘵㑤㉣收敢㙤づ挶ㄳ㜹㈰昰㜴〴㠱㡦扢㍢攲挱㜳つ㙦挷㑡㈳ㄶ〷㤱㕢搳扣㕥摤〵㝣愱昵㉢㑢㘶㜴搶搲昳〹㐰愵改ㅥ㠲〲〲㉦㠱㑥挰㑡㝡ㄱ㐱㌱㐰㜱〹㐰㝢㕤㙤㑢攷㌹㄰愱㉤ㄱ㡤ㄹ㘳换ㄷ㥢つ捤愸慡慡慣慡㥣㌸愹敡愴捡昱㘳换敢㝡㐲㠹㥥㤸㌱㈳㘲昴㈴㘲扥搰搸昲搶㥥捥㔰戰慢挹攸㙤㡦㉥㌳㈲㌳㡣捥昱ㄳ㍢㝤㤳愶㔵㑤㥡㍣㌹㜰搲㐹搳㡡㑢挱戹戵慥㜶㡥ㄱ㕡づ㝥摦ㄶ搷〱攰㍡扦慥戶㌵㘶〴扥㉤㥥㙥㙡慤慡摥攸ち㔲扤㠶ㄱぢ㐶㤶㔶搶搵攲摦愶ㄵ攴愶㔶戶戴戵ㄹ㤱㜸㌰ㄱ㕣ㄹ㑣昴㡡㠶挳㉤㕤㥤㡢㝤愱ㅥ挳ㄳㄶ㤱扣攱挵扥搸㝣㕦搸㈸〹㉦㡡ㅢぢ㝤㤱愵〶㜳敥昰散㥥愰㍦ㅦ㡦㍤敦㜸愷㠶㉣㈵㔵戶搴搵搶㜵晢㘲〹㘱㐹〵㡥㜳愲㤶㤶㉡㙤愲㐸ㅤ㈹愵㝡㔴㤱㘵㔸㙣㤳捦㔷㉦㈳ㄸ〸攰ㄹ〴㌰搸㔶戳㕣慡㤶㥦愴昲晦〲昳戴㔷愴㠹戸㍡㝣慥㡥㑥㔷㐷㤷慢挳敦敡㌰㕣ㅤ〱㔷挷㔲㔷㐷户慢㈳攸敡㌸挷搵戱っ㌴挹换㕢㔰攰戲慥敥摥ㄳ㍥摤㜴㑦攳慣ㅢ㝤㑦㙥摣㝣搹扣昷ㄴ㉤㔲㑣㜳〸ㄲ晡㘱〰㥥挳〱ㅣ〴㤹慡搴㍥〸㈲挲攴扤㌹㈱昴挸ㄹ昵て㉣晢散㡡慢㐷戶昹ㄵㄵ㉥㕣㠶㤱换㜰㜲ㄹ攱捣愵㑡愹户㉣㉥㈳晦慤㜸摢㡥戲㠷敢敦㤹㔱㍢攵摤㐸摢㌶挵㌱㈱㕣㐶㤲换ㄱ攴㜲愴㌳㤷挹㑡敤戵戸㕣戱戳㜵挳搹挷㙤㙥扡㘷㤰㜷挴㝤扢㌷搷㈸づ㉡攱㔲㡥㠴㍥ㅡ挰㜳ㄴ㠰㐳㡦㈶㈹戵摢攲戲㘹㝤敢㍦㔶摦晥摣扣ぢ扢扦㕣晡捣㐳㌷㕦慦㌸㉡㠵换搱攴㌲㠶㕣㡥㜱收㌲㑤愹㤷㉤㉥ㅦ戵㉣㜸㜰昴㍤㥦搶摦㜶晣敥㠷ㅦ摡昰攸㐲挵㘱㉤㕣㡥㈳㤷攳挹攵〴㘷㉥ㄳ㤴㝡挹攲㜲㙦攰昲㝤愵㜵晢收㙣扤戱㝣挸慢扦摥扢㕥㜱㕥㄰㉥㘳挹攵㐴㜲愹㜴收㌲㐵愹ㄷ㉣㉥ㄷ昵扥㌴昷愳㤷敦㙡扡攳摦㑦扦散昵昷晣㝢ㄴ慤㐶戸㡣㈷㤷㉡㜲㤹攰捣㘵愲㔲扦㑢捡㌲㜲攳㔵㍦㝥㜷昶㥣㥢慥㝡收昲摥㍢户㉢㌷㘷愶ㄳ㥤㉣㍦㝢㐰戶㘰㔶っ昹晥㝦〶㘳㠵㤳㐸收㘰戴挴昸慡㠱㌸㠹㕡㤹㑣慤㑣〱ㄸ㘰搵戲〶㈱慣昶ㄹ㑢㈳ㄷ㍦㍤敤捡敡㠶敤昳㝦昹愷㉢ㄷ摤㌹慥晥愳攲㘹㈰㥦㡦搹愱㜲扥㤱昸㤶愶㔲㌷㘷㠵〳㥦㡤昸㑣摣㘱㜳㌲慢㌷攲㕤㍡㘷扡挶㠸摦㔸敤㐱ち㌳㘰㜱戸㉥ㅡ㐹ㄸ慢ㄳ昵扥㠴慦㈰摣敡㡢ㄹ㤱㠴づ愲ち愹㘵愶㔸戳㐴捡㤲戵ぢ慤ㅣ㌸㤴㐹搲挶愵㐸ち㑣㑥ち㑢㘶㕥扥〹扤ㅥ愷戵㜳㡥㉦摥㥤昰㜵㠶㡣愳㌳㥥ㄳ昵㠶㜹㝡㔱㈲ㄸ㡡㔷㠲攵散㔸戴㘷㌹㌵晡㙤昱攱㑣慤㜳㙡昵㑣〷㤰㤵㥥㜷㌴㔰慤㝦ㅦ户㐲㐱敡㐴攲〱㝦㐹㑣ち㔷㍣ㄳㄹ㠸㔸ㅦつ晢㠲㤱㙦改攱ㄶ㔷㠳改〲㙢ㅤ愸㡦昹㔶㘱㑤㑢戱㥥㔰㌹㥥㝦㕦扤愸㘳㑤て㑣づ㑣つ㔴㔵昹㈷㡦昷㑤昴戹戹㠸㝣摤㌵㠹㤳㝥㜱昸㤴㘰挴ㅦ㕤㈵愳㘵㔰ㄸ㉢㤰っ㤵昶摥攵㠶ㄴㄵ〷摡㝤戱愵〶ㄶ扥㔸㘳晤㤰㐰㕤㌴ㄶ㌳㐲扥㠴攱㤷〲㍡㐴㐳搳ぢ攳つ戱㘸㤸攵㈳㙢㝤㜱㈳㌵敥㉡〲㘶㐳戵搱㥥㠸㍦晥㍤㘷㘴㕢〲慣㐷㘴攲㔲㑣戲慡戵挱㈹㌰攲㈲改㤱㤹搵挴昸㙢㔶〷㑤昴ㄱㄹ㘸戸〵搱捥摣搸㠶㤸戱愲て㥢㈵㔱つ扣挲㤵〶昱㔹扤㌴㔱愶㕣㤸㍦愲㜱㈳㈲攲㔵㠴㕢㠳㕤换㡣㔸㥢㐱㥦搲昰㑢㔷て㈳捡挰㜸散㌲攲ㄵ㉤㔴㍤晣ㄲ晦㔱昶搲挰慣搵〹〳愳搹て㜹攱慦㈵㝡摢㌹㤲づ㑦㈳㌱摢〴㘲㜸㕡㜱㐳戴慢㈷捥㔱ㅢ㡢㠶搲㌱㌵晥㤵㍥戴改㥦ㄷ昵ㅢ昹昹慥㍣㉤㕦换攷愵挱て捡挳㔰ㅥ㥦㌱㔰挵改㈲敦戸摤扢戱㔹づ摤㥢㠹〷㔴㈹摤扣㔸捦㘹捡攸㜳户搵戰昴戱㔲戹㄰摡㠳㤶㐲㐶㌵慡扡㌲㘷ㄴ㥢愰㈹慢㘱㈳㡥昳愹搹㈳㥢捥㘸户愴㍥㉥㜷㔷㠴㙤㥦㘵晣摦ㄲ扢㕣㠳慤摥捦㕡㠹㌹㝢㡥㉦攲てㄹ戱晥昵㐵㠹昴ㅡ㠲㕡㠲㍡㠰㐲捤扤ㄵ戳㕢㑥㑤搲ぢ㔴慢㔵慦㝢㔵搰㥦攸昶㜴ㅢ挱愵摤〹㤴㘱㍢攳昵㔶攳扥づ晢㤸扤戸敦挴晤㌹晣㌴㝤ㄶ㐱〳㐰㘱㘱愱㈶昳愷愷㔰㥦㈳㜹㑤㜱㕥ㄱ捦㤶扥㘴昶攴摡㐴㌲扤ㅦ㥣愲㈳捡〹㑤㙦㈱㘸㈵㔸〰㔰愸愹扢搱て昶㘵㌸愴㈸挲挲㐳㠹㝥㈴ㄲ戵㤱慡㥤㔴㌶㠹ㄶ㑢㕥㔳㜴㑣㐵㈲晡愵搹ㄲ㥤㐶㌲扤ㅦ㥣愲㔳㉢ㄲ㥤㐹〶㘷ㄱ㜴戰㤲愶㙥戶㈴愲搷扡ㅢ扦ㅢ㈱捤㜸㤱挸㐷慡㑥㔲搹㈴昲㑢㕥㔳㈴ㄷ㠹攸攳㘶㑢戴㤴㘴㝡㍦㌸㐵〷㔹㈴愲慦慦㠷〸挲慣愴愹慢㉤㠹愸㤱㡦昱扢〶搲散㄰㠹愲愴㕡㑥㉡㥢㐴㌱挹㙢慡ㅣ㜷㤱攸㈸㈴戲㈵敡㐱㘹愱摥て㑥㡤〶㠵㐸搴㑢〶攷ㄲ慣㘱㈵㑤㕤㘴㐹挴晥散挱㙦〳愴㌹㔱㈴㍡㥦㔴晦㑣㉡㥢㐴㙢㈵慦㈹㍡摦㈲ㄱ㝤敦㙣㠹㉥㈴㤹摥て㑥搱㜱ㄷ㠹㉥㈱㠳㜵〴㤷戲㤲愶㔶㕡ㄲ摤〸㥦昸ㄳㄴ摤〵㘹慥ㄳ㠹㝥㑡慡昵愴戲㐹㜴戹攴㌵㐵㐷㕥㈴愲ㅦ㥦㉤搱㔵㈴搳晢挱㈹㙥〲㐴愲㥦㤳挱㉦〸慥㘱㈵㑤㜵㕢ㄲ昱戹㈶㜵㌴㑥㈴扡㤶㔴搷㤱捡㈶搱〶挹㙢㙡㉣敥㈲ㄱ昷〴搹ㄲ摤㐴㌲扤ㅦ㥣攲㠶㐲㈴摡㐴〶户㄰晣㡡㤵㌴戵挴㤲㘸㍦㜴㐴㜳晤㉤挶摢ㄸ㤱攸㔶㔲摤㐶㉡㥢㐴扦㤶扣愶挶攳㉥ㄲ㜱㝦㤱㉤搱㕤㈴搳晢挱愹㉡㔰㠸㐴㥢挹攰㌷〴昷戱㤲愶㥡㙤㜶挴戱㜶㍤愴㌱㜵㜴㍦愹戶㤰捡㈶搱㠳㤲搷搴㈴摣㐵愲㈹愴㥡づ〰㍥㤶戳昷攱㑣晤ㄱ㤲改晤攰摣㤳㐱昱㜵昶ㄸ㙣慣搸昲㜷㘴㡤挹昲ㄲ扥昳㠵づ㔱㕦㈸摤てㅡ㥢摢て戰戶㠸ㄹ㍥㔰捥㌵戶ㅡ㈶昱㥤户㤲ㄹ㑣㔵攲慤㍣〶摤愸㙡㙢㙣搳戳愸挰敦㜹㡣敤㄰㘶ㅣ㑤㝦㥣㘰ㅢ挱ㄳ〰戶昱晤㈴戲㥥愷〰ち㘶ㅢㄱ〳戱捦㐲㤵捦㕤㥤㤳㠳搴户〷㉤㈰㡦收愸捦摦攰敢㐲㔴戵挰㡡愹㝡敢愲攱攵搸ㄹ挷捡㐸㔹〷扦ㄸ晥昶捡愰摦㠸㜹㔹搰㠶㐰㙦㍥㐲慡㜱㡦散㉡攲搸昲收㘹㙥㜷㤱搷愹慤挶㈴慦愳㉤敦捤ㅥ㐸㙥捣攲晦晥㠲㘹㌳㌹慤ㄶㄶㄶ〱敡㑦ㄳ散〰㜰搷〰ㅣ㤴㈷㝥㜸戸慤㍢扡㙡づ摣㌸㈳㙥㠶㉣攳㜵戱㘰㘲㘸㜶㌱戶昰扥昰㜰㈹㥦ㅤ㌳戰昹㡡戵㘳て㈲㝤㘴㡤ㄱ㡥ㄸ愹㌴㐲ㅣ㘱㥢昹㔷〴ㄶ〷㡤㔵摣㌸㡥捡㐶㈱收㕡搷ㄳ㑦㐴㈵攲㜰㘴㌶扥㍥㍡㍦㥡愸て挶㤷㈳㘴㜴戴〳摡挴㥣搲㙤㐴戰㙦㡡㘱晢昴㔵㐴搱攵换つ扦㠳㡣㙤搱㥥㔸㤷搱㔸㝦㈸散扣昰㜸捤㑢挹愶㑢㜹㤵挷愵㜰ㅤ㥣搳㉦㍥慡戶㘶挸摤戳昷㥥㝢搱㑣㉦戶㜲ち㡢㈱㠶㡢扢ㄶ慤ㅣ捣收㡣昱换㤲戴㤰挰㘱っ㥥捦挳㠱㐳㜰㜹挸愸昵挵㘰搸搱㔸㕣て㈷㤳愶攱搹挲搸收㘸㌹ㄴ㤴㡤ㅤ慥戹户慤捣㍤愷摢〴ㄷㅢ愴㌱㜳㠶㔲㐳㌲㌶愱搲敦㙡㘲づ敥㔹戹愷㘲戶晢㥡㠲㜰㉥㉣㔸挹㠰㕥㐷㠷收愵㔸扣㤴㝢ち㔸㌹捡挷㙤㕤㝥㠴㠷ㅣ㔲慢㜰㔹㈴扡㉡㈲㤲扢攳㡣戳挸攴㕡㔰㔰つ戲㐲晣攴㥡㥣㌴ㅢ捤㕤㠷〲㐷愷挷㡣㠷昵㥤挲㌴晡戱㌵戵㡥㕤㡡㜹散搲ㅥ㌳攴㙣挵㉢ㄹ愸戰㈴㝣㑡㌴戶慣㌳ㅡ㕤挶㈸㘵愹攴攲摤㠶㤱攰㌹㐸㔱搸㡣ㅤ㌳つ摢捦换㑢㍢敢戰昴㑥攴㑣挸㈳捥㥢㘷㈷㔲㜹つ戱㉥挹愹〹攸㍦㡦㈵㔶㡤戹攵挱愹㥥㈵昵㤷㉥摣搵㝡挳㐷慦㙥㔵㔵ㄶ㘲捦戸昹摡捤㐳扣戳慦㝤攲慤てㄶ敤挹摢攸收ㄲ㜳㐰㠱〳晡㜱〳〲㝤㜳㔷㝢㌰ㄱ㌲㡡〲愶㘹㌰敤つ㘰㌶㠲㈳攳㉦〸戴㜷愳搷昵㈵㠱搹戱愰㍦ㄴ㡣ㄸ㌴ㅤ㠴换㜸㘶搴㙣㉣㐵〰愷㌵捡昳愹㘸愴㈴搰ㅥ昳㐵攲㕣㙢㈲㕤扤㠳搲㜲㌲㕡摣㠱摡㘰㈴㡥㘶㘴扥㘴㝡㐰㠰搳㌹㥥㕣㑦㌸㌲摢户㍣㝥㈸っ㈷搸㐹昲㌲㈷㉦㤷㜲戹㤴搷攵㍤挸ㄱ愱㜹㥥〷扦愱戶ㄱ㌸扤㝣晢晡戶㌹攵慤㡤攵㜵㜳攰㍢戹㘴㝥㜳㜱攳㐰㈷ㅦ搳ㅡ挳て〷ㅥ搶愱扣挵㜲ㄶ㘸挵摢昲㥣㤶敥扥戸㤳㌸㈶㉦愰㡥㐲攳搲㔹㝤㤷㤵㈰㈷搵〴㐰㕦㈳㘳昱晥てㄴ改㉦㤲愰〵愰㠶〹㠶づ㥣愶㘵搵㡡㜲㑥捤慡〲㠶捡〹㠱㠴㑡㥤㠰ㄴ挷戴挳㤸㔴ぢ㐰挱㜱㈹㤶慦㜳ㅣ㤸㘳攰ㄸ搰㜳っ晣㙤㔲搳ㄵ㕢㕥慤㙤戸㘲摥愸换㥡〲㙢㕡搵ㄸぢ戱慥㘷晦ㅤ㙢㉦㜹愰改搱捤愵扢㝢㑥㙣㍥㔲㌱㌸挰㜱愰㜹晥っ攰慣昷㐵攸㘴戶摥ㄵ㠳㉣搴扤捥㉤㤸㕡㑣挰ㅣ㌷慤愲ㅡ摥㑦〳㜰㔰捦㝦㤲昰㌵ㄲ㥣〹搰扦㝡捥〲㠵愸㘷ㄴ晡㤰㔲捦㤱挸攵㔲㑦〷慡昴愹挷昳㈶㜲愹㘹㘲㠴愵㠹㉢㌶㉣㥣晡攳晢㝦㔲㝦攵㥥收挵㐷㍣昴戳㘷搵㜰ぢ搱ㄶ㥤扥㈲晣㙣愸收昶ㄵ㘷㕤搷搸㍢㙥㥢昲愱扥愹愲㜷㤰㍡㍣捤㌴㤷㌴戶㌵㤵户〷㕢㘰㡥づㅡ敡〴扤㘸㘸ㅦㄲ捡㑦㠰㥦晥慥㤵㄰㉤㉤㐵挶㐱㐳敦㤱昰㝤ㄲ㉥〳攸㕦㐳㈱㔰㠸㠶〶愷㘹㘸㔰㍦ㅡ㘲㠸愸㑦㐳㌶〳㉡戵㤴㄰㘸摤昵㐸捤慡昰晣换㍥摡㝥昲㈷晢户㑥㔱㈵ㄶ攲戱搰慢㌷㕤㍡㕤㥦户昶戶㌱扦晣敢㠶㔷〲㉡ち㑥愶㜶晥㠶㔴づ〳㠲㤵㌹愸㘷㌹㉡㠸㝡昶㈳愱㘲〴昸改㝦户ㄲ愲㥥ㅥ㘴ㅣ搴挳㜸㤶捥㠰㡤㘲㤰愹㝦昵㌰〲㈵敡㈹㐸㔳㡦愷ㅦ昵慣㐱㤵㤴㝡㘸㐰收昸㜲㔹㕡挸㌲ㅥ㘵㈱ㅡ摥㡣㐷敦摤摢㌳攷ㅡ㝤㑢换愶晡敤〵敡㝣搴㌵搵挳捥つ捦㌶㥥收㘰㠳搱摡㠲搰㠴㠳㠲ㄸ㄰ㄳ〵昱㔴㑤慤㐵㡥㍡搱㕤捣㔹ㄹ㜵㈱ㄲづち捡〳㠱捥户㔸搴㈵㈰愸㈱㜵捥〹㘸ㅤ戰愲愰晦昹挲㍥挲㍥㐵㉥搷〸㘳昸㉣愵愰搴〴昴㜷搴攱〴攴㍢昵愱㜷ㄶ㕥㝣挳摣㑤攳〷捦扡攳ㅦ敥晢搴㝥ぢ昱㜸攳扡攸挴换敦慣扥攱扡愳晣慦㍣㝥敦愳敡愷攰㘴㉡愸ㄸ搲づ㑢㔳㔰㜲攲摦扥㝥愱愳㝥搶愳慥攸愷㠴ㅤ㘵㜰づ㜷㑤㉦㘵捥捡愸慢㤰㜰搰捦〰㄰攸㘵㈴晣㌹〸㙡㐸㥤㔳㍦扦〰㔶昴昳搷㌴晤㝣搰㡦㝥ㄸ捣㑢改㈷㘵㐰敦㕡㙡挸㌲愰㝤ㄶ㘲昴搶㐷ㅦ㜸昰敤ㅦ捥扤攷㠲〷〲㕢㥡㥡ㅢ搵戵攰㘴敡㘷ㄸ愴㜵㤸㝤㤶挴㜲捣㍥っㄵ㡡㜶㠶戳㥢っㄴ攲慥改㈳㤸戳㌲敡㈶㈴ㅣ戴昳㍤㄰攸㈳㐹戸〹〴㌵愴㑥搳㡥〷ㅣ慣㕤㠵扡〵㔸搱捥ㅢ㘹摡㜹扤ㅦ敤晣ち㔵㔲摡㐹㔹捦ㅥ㑢〹㔹戳捦㙥ぢ㌱㜴敦昲ㅢ敦摡昶㜴昵扦扣戶㜹㕣昷攴㕤㉢搴慤攰㘴㙡攷㘸㐸㍢挴挱㝡戰㉥㌹㡣慣摢㔰㑦㜴㌳㠶㥤㘴挸ㄲ㜷㑤㍦㠶㌹㉢愳ㄸ愱㜴搰捤戱㈰搰㡦㈳㈱攳㤲㌵愴㑥搳㡤㙤挷愵㝥〳慣攸收㡦㘹扡昹㐳㍦扡戹て㔵㔲扡㐹㔹捥㉥㑢〵㔹㤶昳㠲㠵㘸㌸㘵㘵攵愹昳㐶㔷㍦昶㑥搳挸㘷㝦昲㤷㌳搴晤攰㘴敡㘶㍣愴㍤㉣㑤㌷戲㙥㉤㠹挰㌹㜱㔰捥ㄶ㔴ㄴ攵㔴戱㤷㡣㥥攲慥改ㄳ㤸戳㌲敡ㄱ㈴ㅣ㤴㌳ㄱ〴晡㈴〰昷㘳㈰昸㕡㘱戳㔲㔴昰〴ㄶ㐵㠲〹㌸扤㌵㍤㠹㘸㐳㌰㔱ㅦ㑦ㄴ〷〰㤰㤴昸愹挳㐶晥扢㘰㠳㜵㙣ㅣ㌸戰㘳㕥㠵晤㉦㉦㉢搶㌰㈶昷㉥搸愶㜷㝡挱摦㈰㈴㈱㡢愷愶㑦愱昵攰挲捣愱㑦㐵ㅡ捥扢㝡ㅣ㜹ㅡ愹昲㑣㐳㐹㔹㙢ㄴ搱戶挸ㄳ晦ㅡ㜹攲㉥㜱晢㈹愷〶攷㑡戳㌹晣㙡ㅢ昲㘲㥦㈷愱㑡昱㜴㠰戹戳ㄷ㌵愶摥㥥昸㐶慦㐵扡㥦〰昷〳㍥昷㍤っ挴愵收昶㡥㘷挱摣敤改戲㑢㘳㉥㜳换㔸ㄸ㄰ㅡ敥ㄸ㑢㔳挹〶ㅣ捣ㄷ〷㥡㝤㥤㐶愸㈱ㅡぢ晢ㄲ愵㘶㠶て㈶散ぢ挵㉤ㅣ㘲㠹㘱ㅦ户㠳摣㑡戶㜵昹戸敢攴㈸㤹ㄷ㡣攸〱〰搹㌳㕡㐵扥搵㈸昲慤㤶愲攲挰㐲扥㘹㈱㘹昲㡡㉥昵㈱愰搷ㅤづ㜶㜹㤹攱摢㄰㠷挴㍥ㄲ㑦摡㌴㑣㘸ㄴ㤷㙣㈶㘱㜲攵ㄹ昶㘹扥㈳㠴挷㕤㠹㤰㈳㔵挷挷㡦摤愶㑢㜹昰愷づ昲愰ㅣ摢㉤㜳㉢昵〳㜰㜳扢搰㍥㐲㄰㈲㠷昶㘱昲㥤攰て㝦㠸ㄲ搹㜱慡㈷㐹㠰㥦㍥〳㤰〹晥捡ㄸ戰㘵㔵捦挹挸㤶搶搵㜶搸㕥㈸昰捣㐴搹㐰㤴㤹㐱㡥㘴慣愴㙣㠷㔵㐷㕥晥搴㙢㐰愴㘴戳㠹㘲扤㤶㕣慤慢㙣ㄷㄲ搴㡦㕥㠷搲㤲扣㌲㙥㌰搹㤸捥挶㜴㜲㉦攳㜶㔳㡡㘸㤴晡㙣ㄴ㈹搹㤹㌱㤷挶㡢㍢㌴攱搵㘸昲攲㙥㉣㠳搷㙢挹㈲㉥㙤晡㍣昲㤲㍤っ㜳昳㤱㑢㕥㘵摣换〸慦ㄶ㤳ㄷ昷㉤ㄹ扣摥㑦ㄶㅤ㠱㠴摥㐶㕥晢㤱㈲㤷㜴戹攸昸ぢ慦㐵㈶㉦㍡昹ㄹ扣攸昲㑢搱㘸搶㍥㡤扣挴㌷㘶㉥㑤㉥ㄷ㔰挲敢㜴㤳ㄷ晤攱っ㕥昴㡥愵㘸っ㙢㜷㈰愷挴㡦㘴㉥㑤㕦昴㈷㠵㤷て〹攸㥥扥㘳〶㉦㝡㤲㔲㜴㍣㙢㌳愴愶挴敢捡㤲㡢摥㤷昰㕡㡡〴㜸搱搳捡攰㐵扦㑢㡡㜸㈴慢㉦㐳㑥㠹㤷㤲㈵ㄷ扤ㄵ攱ㄵ㐶〲扣攸㤹㘴昰愲㥦㈲㐵㔵慣扤〲㌹㈵㡢㝡㤶㕣㕣摣㠵㔷ㅣ〹昰攲㐲㥥挱㡢换扡ㄴ㑤㘶敤㔵挸戹㌹愳ㅦ搸ち㔲㠰㍡㘵戶㘵㥤㌳㘵㝣㘰㘰㐱㡦㉦㠴㤸㘱㑢〰㉢㍣㡢づ㠵愹㈸㍦㕦㈶㥦㘳㌳㘶ㅥ扥愴搸ㄶっ㌷ㄹ戱㠸ㄱ慡挴攲㈸㕤㌸晤捣㘹攸㔹愶づ搲㘹慤扥挵㐹㜹㜰㜱攲㐲昷㍡㜸㜹〷搶ちㅥ㠹㉤㍥捣㌶昳昰㉢搴㝢㠱攰㡡换㤵㤷㌴㘹㌶慥戸㤴㑡改ㅡ㐰ㅡ〲〷慢㥢搳攱㔷捥挰愴㉥㠴昷ㄱ挱攷〹扤㈱慣㝦㑣㌲挲㙢愶㜸㘴㘶愲㈵收㡣㔱㤷㥦㜹㍡摡㔷户ㅡ慣㡡ㅣ㠳搸挴㜰慡㜷㕦〴㐵攴慣捦ㅥ愴㘲攳慣挳换㜳㍥捡㠷捣ぢ㜶挵愲昱㘸㈰㔱摥㠶戸㙢㌹摦捣ぢ攰㕣慤㐶㕤〰㡥㘹晢摣㝦㠲㈶捡㌸戵换㠰攰戴㕦㤲愷㌸㌷搳㉦昷慣㘵扥㈶ㄴ㉡㑦〶戳攳㥥ㅦ戱〸捦㕣搶㘶㔹㘹㍤ㄷ愰㘸昸慣㘵搱㐸㌴ㅣ㕣收敢㔸㌹戵〳戶搳搱㕣㔷㔷戹㍡ㄴて慢昳㉤愷㕤㝢晢戹摦㕦㜳㝣㜸搶摤㐳扦㌸昶戶㥥㡦㉦㔱攷㔹㠸捣㔷昴换㤲㌳㤲㥢ぢ挰昷㌳㙣搳昶扡㥢㙤搱愹挸㝣㘵㜰ㄶ㕥〱散攵㄰捥挳ㄱ愶㕢〴捤㜷㑤㍦㌸㕥戴㝥扡㠵晣戹搷㐰敡㙦挰〷㍤戲㍤㌶㜲ㅣ㠵㥦㝥㌱捡ㄵ搷㌱搹て㔱敦㍡㌵慤㔳户㙡㘵㉥つ昶㔸㠸愲捣捦ㄳ戸摡㔱㜹㉡〱ち㑡㉣㡤㕣挶ㄲ㉥㜰㑥㡤㐴㜳㌵ㄲ戱㄰㤹㕦㉦㤴㈵ㄷ㈱挵昵㔰㕡ぢ摢㕢晢ㄹ㕢攳ㄲ攸搴㕡㜷慥搶㤶㕡㠸慣慦ㅣ戸㔰㑡㈳〱㝢㈳搷戳ㄱ慥㡤㑥㡤昸㜲㌵㜲戶㠵挸晡〸㠲㉢愸㌴搲㘱㙦㘴㈳ㅢ攱愲改搴挸㤲㕣㡤㥣㘶㈱戲扥㤱攰搲㉡㡤㥣㙡㙦攴㜶㌶挲搵搴愹㤱戶㕣㡤㉣戴㄰㔹㥦㔰㜰捤㤵㐶ㄶ搸ㅢ戹㤷㡤㜰㤹㜵㙡愴㌹㔷㈳㑤ㄶ㈲敢ぢぢ㉥挶搲挸㕣㝢㈳て戰ㄱ慥扦㑥㡤捣捡搵㐸扤㠵戸㌷攳〳っ挵㔵㕡ㅡ愹戳㌷昲㈸ㅢ攱挲散搴挸挹戹ㅡ㤹㘱㈱㌲扦㘹㔰㕣㌱昰慦改摢〱昳㤰攰慦㉣戹㐰攸㑦愲㔴㝦㡡攰㘹㠲ㅤ〰㡡㤳愵挸㌵搵㉥ㄷ摦ㄸ㜳㜳㌴㘷㑥敤㕣ㅢㅡ㌸㈱㘵扣㜲㕡㔴㔴㡤挲戶㙢ㅦ慥晥㝣攲㤹㌵㡡㘳㤴搵晢ち㌸㡣搲ち㘸昲㘹〵㌴捦戴〲㥡㔲㕡〱ㅦ㝢㕡〱ㅦ㔱㕡〱搵㘹㉦㈸愳ㅥ㘴㑤㜸ㄶ〹㝤㈷挱敦〰ち摤㔴挵〹戹攷㔱㜳捦㤶㝡㐵㕤收捣〰㤷挸愲㠰昹㠶㌸㘷㔳㉣㤲挱㔰㐸ㄶ挹㘲㙣摦㘲㜸㐹扣ㄹ㈷㠸搸戴㘱改戰昶つ㌸㔹攴搷ㅢ挹㜷㔲㜴挹戱戲㈷搰ㄲ挳㑢㉡〵㠱挶㌸捥㈹晤㕥㝣摥㤱挰㕢ㅣ㤱㐳挱愱挲㡡㥦捦㠷っ〳攲㑢攵慥㑣㉢㤰㉥㔷〳摤捦戶㍢愵㡦攴扢搹㉥敥晡づ捥㥤昲晣㥥㑦㉤ㄹ㕤㕥搴收㔲㔵㌰㔷昱〱㤶搴ㅥ昱㈵㈵愵慢慢㍦捦㈷晣〲㠰ㄲ昱ㄵ扣愸㕤㉣攲慢㠳㘶㑣㐳㍤㠵㍣㥦扥攷㐵㠰ㄴ换㈶㤷慡㐸戲㕣搷㔵㤱㘲昹〷搶晦㈳〰㜶慣攰㐲㤶㝦㘲㤱㡤㈵㐷㤳戰㝣〵㠹愲愴㤴㠸㠱扢搴㤸㈴捦㡡㡡㤷㔲㍣晦㑣〶扢〱㜰昴㙡昱摣挳㈲ㅢ㑦づ㑥攱昹ㅡㄲ㝤㘲搶捤㜱愹㔱㐹㤶搷摣扡㍢挵昲㜵搶㝦〳㐰戹㌸攸㈹收㥢㉣戲戱攴愰戶㡦づ挵㐱㈱㘳㝦〴㔸㜲㝤晤〱㙡㝡㕤ㅥ挵㠱㈲㠸攱ㄶ㘲㠶㈰昰㝤㔹ㄲ㌱捣㐲捣〴㐲摦㠷㔲㌷㔵㝦挰收〰㕡㙤㌰慣挸晡㑡㤷㌱㡤㡡㄰扦搱晤敡愳摤㜷㔱㔷昱ㄱ换㤴挹敥㜹摥㐷㉥㜵㕥㌸〸愲昱㐴㈳㉢㈶㍤搰㐲㘴㥤㠸搱㐴昰慦改ㅦ〲昲㠱挸㐳攱㠳ㄷ㝢晡㙦愲㘹〱㝤㉤敡㙣㔱㔴慢㡡㉣愶㔹〷戸㠵ㄶ㈲敢〰㤷搶㠳㝦㑤晦ㄸ戰慦㌵㥡㠴戴昶〹搱戴つ愷搶昲㉤愶㔹愷㌵㜹ㄶ㈲敢戴㠶㜶㠵㝦㑤晦〲戰慦㌵㕡㡢戴昶㈵搱㌴ㅢ愷搶㍥晦㍣挷ぢㅡ㥦㔹㠸捣ㄷ㌴ㄴ㑤づ晦昸㔸ㅡ㑤㈵㕢ㅢ㐰晢㌸㠵㙡㕤慤扡捥昶㥦㝤昶㈷〳昲换㐷攴㥦㕡㕤㝣敤㙢扦㝤晤敡ㄷ捦㤸昱㕦㥦㙤搸昰攲㥢㔷敦晣㙣㙢攷㡣愷㌷㙥摣㍥昷愶㥤慦てち摣散摡昲㐹昳捤攷㔵㉤㍢㙦㐵㘰搱〹戳捦㍢敤㥣〵㔵慤〳㉢昲昲ちち㡥ㅤ扣㘳搸㜱㘵㙢㔷㍣愸ㅥ㝦㜹㘸㐴㠹㑤戰㔹て摢挴挵㕢ㄹ㥦愶㑣晥〵挸敡㕥㠰ㄲ㤷㤲㠷〹慣㉥摦㝢㈷㐹昹㈸㠴戴㤰愴㐵㈶愹㍣〹㤲ㄶ㈳捦㡢户㌲敡㔱㐸㑢㐸㕡㙡㤲㡡ㅡ㠱搵〷搸㐹愹〴㈱攵攷攴晡㐰㈱㉤愳㠸㉣㉣挹㔷㤴㑢㠶搹〷搰㈷挷ㅦ㕦㕢搱〷愳ㄴ敦㘳㔸愸昷㉤㔴㉤㔰㕥散㜲㈸戶㔵㥤戲㑡昵昷散搵て㐷愹㘲て〴戵㉦愳㍡扢㘲㔵愷晣㐲昳㡥扤㍡扦捦㔰散㤵愰摥捥愸捥敥㔹搵搹㈷愱㜹换㕥㝤㈴慢戳愷㠲㝡㈳扤扡㘲搷挴散㡥㈴ㄹ㈵㤵摣㈸收搸戰攴捡㤹㈳ㅦ挹㡤㘶㑥挸愹㥢㕡㈸㥦㔷ㄱ㝥㑡慡㈱搱㔷捡㤰㠵㤲敡昶㔲捡慢㠴㡤扤搴㡤㑣搱晦〲搸㝡㉢愸 | B30: 㜸〱敤㕣㕢㙣㈴㐷戹㥥敡㤹ㅥ㑦㡦敤戵戳摥㘴戳㈱㈴㠶㄰〲昱攲慣㌷㔹㤲〰换攲㑢昶ㄲ扣㙢㘷敤摤㠰㌸㌰摢㥥愹㕥㜷㜶扡摢改敥昱慥㐳愴㐴㤰㄰㄰〴挴㔵〴挲㐵ㄱ㐲昰挲攵㠵晢ぢㄲㄲ㐷㐷㐱攲〱愴㜳㈴ㅥ〲㍡㠲㠷㠳㡥㔶攲㠵〷㈴昸扥敡敥㤹㥥ㄹ㑦摢㤹㈴攰㈰搷㘶㝥㔷搷慤慢敡扦搶晦㔷㈷㈷㜲戹摣摦㤱昸㤷愹挰捣㡤㑢ㅢ㐱㈸㥤挹㔹慦㕥㤷搵搰昶摣㘰㜲摡昷捤㡤㜹㍢〸昳㘸㔰慣搸愸て昴㑡㘰㍦㈲㑢㤵㜵改〷㘸愴攷㜲愵㤲愱愱㥥㠳昰㌷㥡㍣ㄸ散㌵㔴〰㔸㥥㥤㔹㔸㜹〸愳㉥㠵㥥㉦て㡥㥦㡦晡ㅥ㥤㥡㥡㥣㥡扣昳慥愹㝢㈷てㅤㅣ㥦㙤搴挳㠶㉦㡦扡戲ㄱ晡㘶晤攰昸㘲㘳愵㙥㔷摦㉤㌷㤶扤㑢搲㍤㉡㔷づ摤戹㘲摥㜵捦搴㕤㐷㡥㔸昷摥㝢捦㄰㕥㥤㍢㌳㍢戳攸㑢㉢㜸㤹挶搴㌹攵扢收㘴搵收摡愴昴㙤昷攲攴散っ晥㑢捤ㅦ㑦㜷㑦㉥慤㑡ㄹ昲搵搲㤷㙥㔵〶〶㍡づ㍡搳㐱搰㜰搶戸㜹㠶㜳ㅣ㑢慤㥡㐱愸㍢戳戲㕥㌷㥣㘴搴㤲戳㠰扤慢㥢ㅢ㐳捥㤲㜴〳㍢戴搷敤㜰愳攸㉣㘳愰摡戰㜳㉥㤰㘷㑤昷愲㍣㘳㍡㔲㜷㑥㌴散㕡㈱㑡戹晣㙤挹㄰改㠹愹攵㑦㑥〷捥散慡改慢ㄹ〵摣㤸㡣戶挷晤㙡㝢摢㕢㝡㡦换愹慢㌷㜰捣㕢㝢户㐳捤㜹搳㙦戶㥣攸摤㌲㕥㝣晢っ敥攸摤㍥戵㐷敤㝤摥摣扢㡦摡捡昶搶㘲㌰愶㙦戵愳㔸㡣㔱㈴ㄸ㈰㈸ㄱ㄰㠱㐶㤹㘰㤰㘰〸㐰ㄴ晥〲㉥㐹㜷㘴㤵㔶㌱戵捡㡡㔶愹㙡㤵㥡㔶㤱㕡挵搲㉡ㄷ戵捡慡㔶戱戵捡㐳㕡攵ㄲ摡㈴愹㌴㌰愰挵改㥥㑦㍦㘵收㍦晤搱㠵愷晦晢㈷㝦晥挰户昶㝦㝣㘸てㅡ㍤㄰㑦㙡捥㌷㉦㠳搴㕡㔴㝣㜸昲㄰晦㙤捤ㄵ㘰ち敢㠸㜵户㌵㌵㔵㍢㜲挸扣搳搴戹慣っ攴户ㄱ捡㈸摡づ㔹て摡㙥捤扢慣㜰㜷攳㡣ㄹ挸搶挶㑤挴㜵㌳㕥挳慤〵慦搹扣㜲㈹㌴㐳㜹㐳㘷㕤㙢㤰慥㙥㑢㘰㉢ㄹ愸昷摤搴搹敤扣㔹㙦挸改㉢㜶㔴晤摡㡥㙡㘷搱昷㔶㝡搷ㅥ昷攵挳捤摡慥ㄹ㑤㐳愸慤慢戱扢㔶ㄹ㔵㐵昳ㅡ㥦㕤昵〲改慡改㑤㌸㡢㜶昵㤲昴㤷㈴㐵愲慣愹愵㕥换慡㤸敢㈷ㄶ㕣㉣ㄴ摣㕡㝢㝤扡搴扡敦㑡〸㘶㤶㌵捣㜷㑤晡攱挶戲戹㔲㤷搷戵㌵㠹摥㠹㡡〳㙤挵挷扤㙡㈳㤸昵摣搰昷敡敤㌵搳戵㜵ㄳ㤲愶㜶摡慢挹㐲㈱愷㠴〲〴㙥㍥㉦㐴敥昶摥扣愰㄰㤱㐲㌱ㄹ昹晡㜶戲㥢㍣㡢搵㘱ㄵ㜵㐹㥡搴摥戰挵㘰㥣慦㤲㌱ㄹㅣ㤸㕡ㄳ昵〷㕦晡愶㉤㠶㙤㘲敥㤵㙤慣㘹㘳昱敡敦㕢㤷㙥㜸搲㜴㙢㜵改㘷㙡㍦挱ㄹㄹ㈳〰晡㔵〸㠴㥥扢㐷㔵㈷慥㠸つ晤戲㕤ぢ㔷㡢慢搲扥戸ㅡ愲っㅡ戲㔴攲搶㜶㈵攳ㅡㄴㄹ㝢〹挶〰捡攵㕣㜱ㅦㅢㄵ换㐸㌹㥤搲㈹㠳㤷摢〴㌹晢戵昱昲㤰㜵摣慥㠷㌲ㄲ捡㈳ㄶ㌰ㄲ㘹㌵㠵扥㘱㤲愸㙦㔶㈳㠵戱捦㥡〵㤵㥡戶ㅢ㙥戴昸戶㡢㑢㈲㈲摡㤵〵㍢㑥ㄶ㔰ㄴ戴换㠳っ㕥〳搱㜴㐸㠳散挶㈹㈲㈲ㅢ㘴㘸㜶㡣摣㑥㘴㙣㥦㈱㈳搰㍥㑤㠴㙣㝤愸户㡣㈰戱㜷ㄳ㈹㍢昵攴挷㕤㘹戶㤹㉤ㅦ㐹戳㙢戱㜱挶㜵〴晢〹慥㈷㌸〰㈰晥〸〹㐷㈹㠷㝣㝢㌲㕥㠳㘷攳㐶㠲搷〲㐰㍥ㄹ㤴㌹戱愸愲つ戵ㅤ㍢㤲敤㠶㘱㈷㉢愳㌸ㄲ㐵戴㡣㥢㜶收戰愳㄰ㅤ㕢㥤㍢㐳搷ㄶ㤴㡥㝤㘳㙦摡㑣㉦㠷ㄴ㤹搱㌴扤搶㉤㥡愶㌷㠲㑤晢搴㕢㌷愳慢㌱㑥昰㍡㠰戲昱㝡㐲㈸ㄷㅡ扣摢戳攸㘹㔲扥㉡捣愲挸ㄸ敡㔳挱挷㠴捣㈳㐰㠶㤰敢㍡扥散摡搰㌴〷㈷慣㔷扤つ㝤戰㌷㝦挷㐸敦搰㥢扢㝡㠷晥愲ㄷ㘹㐵摦〲昶ㄲ扦敢愹㘳㙥㐵戵昱㐶㠲摢〰㍡㜴っ㑦摦㉦搶㔳愰捣㘲㈷㠵戹扤昴扡㈸㉢㜷㜹㘳㑤㉡つ㌴㘴㉤㥢晥㐵ㄹ挲㠳㜱㙡づ戶戰攷晢戲㡥㐳㙤㑤ㄵ昰晣戲扦扤㌰㌸敥㝢づ换㜷㙤攴攰㔵愱ㄸち〵㉤㥦敢戰㤱㌳㙣捤㤴捦㈹㐵㌹搴挱㜷昶ㄶㄲ愹㑥敤攴挵㝥搹攷换㕤㐹搲㠷㈴㜹㌳戶搵戸ㅤ〰㔲㐲晣戶愷㐴㌹挸㘶㙦㔱捤摡㉤㔶㝡昸㌲㑥㈷ㅤ㍥挴㉥㌹㌲ㄸ㌹㙣㘷攰㍦〸㠶㥤㈵摢㘹ち㡢㐱㘷㔱晡㔵昸ㄶ散扡㉣㐷㙥㔹㡡㥡㕤㔹昱㉡㤱ㄵ昹㝣搷㜹㍡挳扦愶攸愴㐳㑡㘴㜲㝢㘶㘵挶㔹扣㐵㔴㜴㐳㔲愸㘴戸㠶㥡ㄲ㠸㤴挷戶扢㈲愶てㄱ㜳〷㌶捥㌸㐴㌰㐵㜰ㄸ㐰晦ㄵ㈴捤㜶㌷㥥攱戰㠱㜵扡戴㉢㤵㕣㠹㘸㔰㉥挲攷㝢ち慢㈳㝣捤㕢〹敥〶攸㌰㝦攸㠰捣㈰㐴㠵昲ㄴ㈱慡㌰㠶㜵摥㤶㤷㐹〳㝢㉣〴㤶㘶ㅢ㐱攸㌹㡣㉣つ㕢㜳摥ㄹ㉦㥣戳㠳㌵㐴愲挶慣㌸昳攰慡㜴㐱㕤㍥㙣㥦㡥㌲㙦㙤㑤搶っ㙢挹㙢㐰戴㥤㥡摢〹〷㜳㙣〷㙣㐹㜵㌶搷〴㔲㝦攷㘳っ㈱戰搳捡摦㑡㙦散戶扣摦㍣昴㡤戴㜶㜴搹づ敢㜲搰㡡㤸㡥昹㤲㠵㕤㐴攴愰㌶㘰㉤慦晡㔲捥つ㕢㈷㝣扢㔶户㕤㐹㘴挰挶㘴戰㙥㕥㕥㐴㤴㘰搱㘳っ搰㜳㠷慤㘵摦㜴㠳㌵㤳〱挵㡤扤㙤㑦㉡㉣愲㕢㌳戶ㅢ攰㌵ち㡢捣㡦㔸㑢慢摥㘵㐴㙣ㅢ㡥㝢挲㕣ぢ㜶〴㔶㐸昴㔱㔲愸ㄱ㥡搰㌴㔱搲㑡晤攲㠷〷昲㕣㡥扣㔷㈰㔰戸捡改昴㤹㘷㘸㙦摡昵㜱㡣㠶㜶㍡攷㌴㠴攸㔱戳㌰㥦㈹㠵挹愹挶扤散昳㌶㠰晢㑦㥣㍢搵㡡捣扤愴㤸戵㑥㉦㝦㠶㡣㔷㘴搱っ㠴搰㐷户㈷㈲ㄵ㤶㤱㜲挰㠱挰㌸㥦㍡挹慦㙣愹㌶愴扥㍤慤散㜱㐴㤲㠶慣㜹㜳㐵搶ㄱ㡦㜶捣㜰㑦昴㐰㌳搶㌱敢㐱㕣㌷敢㌹㡥㐹搲㈲㔹㉥㔵㑤㔲昰㜴㈳昴㑥摢慥㘱〱㈸晡㡢㡢捣㉢㈸㌲慦愸愲㈱敢㉣㐳㠳㉡捦戱扣㡢愶㙦㠷慢㡥㕤㉤昱㠱攱扢ㅤ㐱㤳㘰㜲㑡摥㈴㈵㌲㘳扣挳㥡㍦〷㤳㉤㤸〴扡㈷㈱㐷戹㜵㐴㍦㈸㔷ㄳ㐵晣ㄳ㝤㍡㤶㈰㘰㤴愷搴㜸〷㐶搳搵敤〸㠸ㅣ㤵慥㈶㜷㌰慥㍥㠶㤲㐸〸ㄱ敢ㄹ㈴〲慦㘰㑡挸搳挵㕤戴捥戹㜶〸散ㄱ㘳挷敤㜰㉥〰捡〱㤰㔵挷摢ㅢㄴ㔶㔳㥤㈶㥡㕡攱收敥慡㌶㌵㜱㔳㜷㝤㕡㙦扣㘱㤳敡㐸愳愴ㄴ挹㔶㡤㤴㘶搹㘴㡥㍢㐹搵〸愵戸ㄳ㙤㈳戲摣愶慤㝤愷ㄴ㜹〹㡡㐹搱㑣捥㜸愷㈲ㄴ〴㝡㘳ㅤ㐵㥦㝤㌶㜹愴㈲㌶戴〱捡搴㔳㔱搹㜰ㅣㄲ㍣㠵㙢㈷㌵㔹㡥㥦挰摦㝢攲散㐲㈳㙣慢㌱慦㡣挵㌵搳昵晡㠲ぢ㉢愱㙡晡戵ㅤ挲搲㔸㕢愴㘱ㄴ㜷昶慢晤愳敤㑤㌱㘲捣㠶っ㡢㘴昸㠱挱㠶㘰慥㔴㐴㤵搶搹㌰户扡㔹㕣攲搳㘹㘹扡ち〳㑢㘱㙤㑥慥㉢㌳慣㘵挹㡦愹づ捤搳愲㤲愳㠶㌵扤ㄲ㐰愵㠷㤴攳㜱㑥㌱戸㘱㥤愵㕢ち㤷ㄸ㈰㜶攳摣㘲㌵㐴㘸户㌹〰㑦〶㍢〷㍢搸㤱㈸㜴㐲敢㡣ㄲ戴㤸㐱戸敤㡢㈰敦昴㠹㔱〸㔲㑢愵晦㍦㈶扥昴っ搳户㡦攵㤲㑣捣㐴っ㜷㘵㔸て㐰㙥㍡㌲㐹㉥ㅡ㑢〲收㤱㘴㔳㐲㙢㈸㈹愳㠹㌱㑣㤳捦て㜱㡢㠷戱慣ㄱ戲㑤ㅤ昷摣㐲ㅢ摡戴扥戱挷㍡攵㔶敢㡤㥡㔴慡㌸㤱搵㑡㈳敦〸㝣愹㉢㠰ㄱ㌷㘵散㑢扣㈹愷㜰㤴攲㤲㠹愴晥敤㙥攳ㄸ扡㉢㈱㠷㌱㈲搵挷〰㘴㠶㕢㑥〵挴扡敥㈹搰㍥摣摢扡挰愰㉥捦㐱愴㜵ㄵ㔱㤶捤攳㍥㕥㌳㡡慣戸㉤搵㙣摥㥢昷㘸戳愷㡡㑥摡㔱搱㡥挰ㄱ搶ㄹ〹扣㘲ㄱ挶㐸㥦摣挱㐱㜲㔷攳攸敥搵挷搴㘳敥㉡㔰愱㌰㈰ㄸ攳攵㈹㈸㠷㕤〵㈳搱攰搶㕡㔶户㘰昴㤷㤶户㌱つ㈰ㄸ〶愶㐱㡢㤶㤱㠱㌳㡢晣搶〶捥捤㘸㤵ㄱ㈱㑤〷㔳ㄹ愳ㅣ㠳挳ㅥ㐸〳㌷昱㈰扤散㐱〹㠵晢搴挵戰攴㙥攲㠴㠳㈳㤰攷㕦搷㔱戸㘸㠶戸晥攲ㅥ攸㈸㥥慥搵㘸敥挲㍦户㈳戰㡡慢ㅢ㤱㌹扡慦攳㔲㤶㕡ㄳ敤扢㕢㍡㉡攲换㠲㠷攷㈶㑦㥡㘱㜵㜵㈹摣㠸㉥㙥昵㑢ㄲ晡捦攰㡦搸昴敤戴㤹ぢ㉥㉦愲慥㜳敦换㤷㕣敦戲慢收愵〷扣昵〷ち挱ㄵ捡〱㑥戲㥣晢㍢晥愹愴攵昴㥦㘲挴敤㑣㥢〳戴ㅣ㈴ㅣ㐷愵㐸ㅡ㡣㈳㥦㐱㈷戰摤㥢户〶㐸㈷晢㍡攸㐴〹㠲㕤㐲㜱㉦扥㙣㠴㈲㝥〲戴㤲㔸愲㈳㌹昶晣㥢㘰㝤昱㘳㤴㄰攱㜸㡥挵㠸晥㍡攴㌲㔰愷〴㜹㝣挵㠳ㄷ㐲晥㝤戰㤴㜰昳愶散昴㑦㘰㘶昱愳㑥ㄴ摤㐴ㄴ晤戰ぢ㐵㠲搷㐰ㄴ晦摥㡦㑣㤲㜴㠶㘷㕦㔴㈰㥣㙢摡㍤㠰扥攲ㄷ㝥晦㠵〷搰昹㤸㌸㤴㡤㠶㔰摢慤㜸㙥㥡〸昹㉥ㄳ㠱挱㝢㘵㈲㥣㐶㐶㌰㡡ㅦ㤹〸戱て㘴〱〵㕢㥢〸㡣敤㘵ㄸ㠲愹㔰㙢捡慤挱ㄳ搸㜵づ晤㘳㈷㜱昱㔶〶㠸攷㐳㘹〵戳昰㐸敤敦㉥㕥㌴㝤搳㌹愰捡㑦昸ㄲ捡捣㕦挶㑤㙥搵㠵㍤㙥搸戴㐶㜵摡挴㔷㤱㜸搹㜷晤㈹摢扢扦づ㑣㐵㈹㜲摦㡢㤲㈸扥〴㑦㠹攰戹㈱昷挱㝤摦㌹昱晢㐷㥥㌸挶摢㙡㌱慤敡户㈳摦㑦挸㥥昶〴㠲扡愹㡢㈲搷昲挳㥣搳昸㐴挹㕥慢换ㄹ搳㔷㔶㔰㘰㌸㐹㌶㈲扣ㄴ㘱㐶挴户ㄳ㑣㑣摣㝢㠸㑣捣挹づ㜷愷晡戰㐹戹〸㈷㔳ㄳ㔷㍥扤㈴㙣㈸㝡㉡戲㍥慤㑤晤㝢㔰㐵㉦㜲㈲敤㔶㈲㑦㥤㑣㐲㝣户㔳搷ㅤ愱慥㡢づ㌲っ晢㈷㔲ち昱〷㔲㐸晡㈰挳ぢ〱㑡㑡㥤㐵㐶扦〳㈰㈳戲搶ㄹ攲愵㍦㘰㔷〸挸收愵扦㍥㍦㘲挱㉥〲㡢㠹㉦扥摦ㄳ㉤㙤搱㐴㌵㌱㔴慢㙣㥡㈵㘴搴攱㠵〵㔳㐹改㌲㌲㐹搲て㈳户㙤㜷ㄴ㕦㌲散㐴㠱户㠸戱㜵㠷扥戶戲㜳㥦摢挰捤て攸㤹愲㔲ㄸ敥㕥ㄶ攳㐰慡㘲㜴㔱搳㜲㔴㐴㌸ㄲ㘵㥢㥤〶攳㉡攸㉣昷〰㑥愵〸晥昱㑢㈱搶㑦戴㠶扥戶戳㠶㍡捥ㅤ挰〲昹㠳晤㜵㔳〶㘳攳慤攴ㄸ㐸搸㙤戵㉡㐵搷挳捦愱ぢㄷ㥤ㄳ㐶㉢慢㥥挵ㄱ晣㐹㌸㉢慦㜵改㝦㐶慦ㄵ㘷㥤㘷㙦㠶戱摢昴晦㝢㔰戰愵晥ㄷ㡣扤㈹㐴扥㌷捥昰㐱㘷晣㘴换㤰つ㜷〴㥥㙤〴㙦搴挱搸㔰㔹㠶扣愳摣ㄲ㍥㕥㡤慡㤵〴㠷摦慢搰㜹㌵愲搹㤷戶敤㘰㑦〱挸搸㤰晥㑤㠸愰㥥晤摢攵㔶㜲扡㉤扥てㅤ昷㥤戶慢扥ㄷ㜸㔶㌸扥㠴愰敦㌸扦㍤戳㘰昳㑣㡢㙦㜴ち戵㕢戰ㄳ㐳敦㐷㥦㌳ぢ㄰搸㘷㘴昸㜲挵㈲ㄹ㔹搸㕥㈴㠳摦㈱㡤愶挲㑢搴づ挱㌵搶〳つ戳㡥㑦㔷ㄷ攰敢っ㔹戴㈳㤴㕤攴㜱敥扣愱挱慤挳ㅤ慤㜷挳ㅦ㈴敢㤳〸㡥愹㈵扣敦晤摣搷捥㍤㘸㙦ㅢ慦㉤㘰换晥㝣㙥㘵晤㌹攰㜴㝢㙦㘹㈷ㄹ扥㤳㕦㈴㤷㡤ち㈱㉥敤ㅦ挳摦敤㍢㘸㌹摡ㄸ攸㍣晥愰㥢㡥戰㠹㍡摣㘷摢㠸㝥㕦㐰㔷㌱㑤㠰㥦㘱挶ㄹ㍥〸㝡昹挸㡡攲慢㔸ㄶㄹ〰昹㕣戱ち搰㥢慡㥦摤㡣慡㐷敦㘷㑦㈴挱㌳〶挹戱㉣扥㡣㠶摣慥㘸搹㘰〹㉥㕢愸戳〴昲㐶搲〳昹㥣攰㔹㐲㑤攴㡢攸搰㥣㠸㡤搲摥ㄳ昹挲㘶ㄳㄱ戴〲搴㐲搳攳㡦㈶㕡挴愸愳摡㜰〸㕣〲て㘰㌴㔱㈶㈳㤴㡦ㄴ㍡挵㈸挶昰㘳愲〸改搷昱摦ㄷ㡥晤敡㜹愶㍦ㅦㄳ㑡㈲愲慡㝤ㄵ㤴㠸㙡ㄵ㥦㑡慦挲㐷㘹敦㔵㍣扤搹㉡㐶㈹㉣㌹ㄳ㈳〴ㄸ捥㡢ち晥愸㔵㌵㤰攱㠶昲㈷㉥㄰攰搷㌶㡢㔱ㄳ㈵慡敦㘵㘴搰㤷㍢慦㕡㕤㐱㈶改慢㜳㈳㌲扥昲㔱㠶ㄲ㙦㐴搲愹㔳㡣扣戲挵㐸㍤㤶㥣搸ㅤ扢㈳㠴〴㤶挴捦㘶㝢捡昶㘲㥦愱㝥昱㔴㠲㤸㤳㈷㤳㑦愸戴㌸昸〴挲㠸㑣㔳ㄲㄲ㌷㔲㝣㈴㘹晣晤ㅦ戴㝣愷愸㐰〲昵㐴㡤㐹㜰慡昱㤳㐹攳挳昸㍣㑢戵挹昱㉡〱搳ぢ㐹㘳ㄲ愶㙡晣㐴搲昸晦づㅦ㘸㌶㑥攸㌰ㅡ㔹㈷㤱㘴ㄸ扤敡ㄸ㤰晡㔴㝢〴捤㜵㡢㡡㜴搰㡡㡡㈹㐲㔵っ戹慥㔴改㄰㙥㠵昸昸㔸㝡ㅥ㤷㥣㜰ㄷ〴搲㌶晡㝦㈶㥣挲攵愷㌹㌳㌴昱㉤昴㍡愲捥扥愱㥥搸戹㘸㉤昸㈸ㄸ戰㑥〵㌸㕣搵㜶ㄴ㠹挰㉥㈸㐴晢扢㠵㜷㍥挳㠶㙣敤㐷ㄲ㉤搳㜸㤹愴㍦㉤愲㈲㉣〵昱愱〴戳戹挷㕢㌴㘳㍣〶攴㐰㑣〲㌲㘳㍣づㄸ㐵㘴昶戱㘰㤴晣慦㤸晢㐳慣昸㌰挱ㄳ〰㘵㐱㘶㈷ㅤㄴ㥦〴ㄸ㐹晥㡦ㄵ攳敢捡㜱愲㠹㐷㤲㤷愵挹挸㜸㡡ㅤ㍥ち㤰㠷ㅦ㔷挴㐴㔸㌶㍥㠶㤲昴㑢㈹㌸搴㑢㍦捥㡡㑦㄰㍣つ㔰搶㌹搹㙤敦ㅡ搷搴愷ち晢㈴扡㡡挷〹昰㌳㍥ㄵ㘷昸愰㜳ㅦ摥摥摢㘸收㤹㌸昹挲ㅦ㌱捦戶㑦昹敦挳愷昹ㅢ㕣㜴ㅥ晦㘷ㄲ㕤㔹昸〵敤㙤晤㡤㐵㈶愰㜱慥㝥㙢搸散㤷㌰づ搷搵ち愵㜰㐴㉡㤵㤲㔶ㄴ挴㌷ㄷ㉣㍣扣㠱㙦㌹慡㉡㠴㈰つ愸ち㌷慥㌸㠶〲攳戳㙣㑡ㅣㄳ㑦挶攷昸㐴搴慡㑤晣㝣㥣攱㠳㈰㕥㔵昷㠷攲敥挹ぢ㠹㙢㔵㘱㜷扣㤰昸㔷ㄵ慢改ㄷ㍥挳挱ㄴ戲㤰㘹搷㑡㐴㥡愲愱㉦㈳㌳㥣ㅦ攱摣ㅥ挴㑦扢㈲慡ㄷ㙡ㄷ㉥晣㜵愴㌰㝥㐳攱㍤敦ㅡ㝡收㠵晦晡挳㘷㝥昳ㅦ㐷晦昴户㘷㥦晤捤晦㝥收昹扦晤㙣攵攸㉦㥦㝢敥ㄷ昷㝦敤昹㍦散戵扥慥晤攰慦昳㕦㝦㜴敡搲愳て㕢攷㙥㍦昱攸㝢ㅦ㝡㘰㙡昱㥡㠹㝣㝥㘰攰戶戱晦扣晥㑤愳㡦㍦晣㈳昱昳晦搹敦ち戵㕣扣愰㝤ㅡ㕣戶㥡挶㔷㤰挱㌴㌸攳㔷㜴ㅡ㕣慥摡愸㤵㜸愳㘶㔰㔰㠲㜳㠳ㄳ㔰ㄵ㘶㝢挵攰㍦〰昶㈲戳㠴 | C30: 㜸〱敤㕣㕢㙣㈴㔷㤹敥㔳敥㙡㜷戵敤戱㌳㜶㉥㌳㠴挴㈴㠴㐰㍣敢㡣㈷ㄹ挲〰挳攰㑢㘶挶挱㌳㜶挶㥥〹㠸㐵㍤攵敥㔳攳㥡改慡㜲慡慡㍤攳㄰㈹ㄱ㈴㕣〴㉣㔲㜶ㄷㄱㄲ㉥㡡㄰ㄲ㐲攲昲挲㘵㤷ㄷ㈴㈴搰㉡㘸昷㠱㝤㐰攲㈱㡢㔶慣戴㈰㌴ㄲ㉦㈰㈱挱昷㥤慡敡慥敥㜶㤷㥤㑥〲づ昲㤹昴敦㔳攷㔶攷㥣晦㝡晥晦㔴㜲㈲㤷换晤ㄹ㠹㝦㤹昲捣摣扡扣ㄹ㠴搲㤹㥣昵㙡㌵㔹〹㙤捦つ㈶愷㝤摦摣㕣戰㠳戰てつち㘵ㅢ昵㠱㕥づ散挷㘴戱扣㈱晤〰㡤昴㕣慥㔸㌴㌴搴㜳㄰晥㐶㤲〷㠳扤〶昳〰㉢戳㌳㡢慢㤷㌱敡㜲攸昹昲搰昸㠵愸敦昱愹愹挹愹挹晢敥㥦㍡㌶㜹昸搰昸㙣扤ㄶ搶㝤㜹摣㤵昵搰㌷㙢㠷挶㤷敡慢㌵扢昲㍥戹戹攲㕤㤱敥㜱戹㝡昸扥㔵昳晥㜷㑣摤㝦昴愸㜵散搸㍢〶昱敡摣搹搹㤹㈵㕦㕡挱慢㌴愶捥㈹摦㍦㈷㉢㌶搷㈶愵㙦扢㤷㈶㘷㘷昰㕦㙡晥㜸㝡㘰㜲㜹㑤捡㤰慦㤶扥㜴㉢㌲㌰搰㜱挰㤹づ㠲扡戳捥捤㌳㥣㤳㔸㙡挵っ㐲摤㤹㤵戵㥡攱㈴愳ㄶ㥤㐵散㕤捤摣ㅣ㜴㤶愵ㅢ搸愱扤㘱㠷㥢〵㘷〵〳㔵㠷㥣昳㠱㍣㘷扡㤷攴㔹搳㤱扡㜳慡㙥㔷昳㔱捡昵摤㥤っ㤱㥥㤸㕡晥攴㜴攰捣慥㤹扥㥡㔱挰㡤挹㘸㝢搲慦戴戶扤戳晢戸㥣扡㝡〳挷扣慢㝢㍢搴㕣㌰晤㐶换㠹敥㉤攳挵户捥攰摥敥敤㔳㝢搴摡攷㙤摤晢愸慤㙣㙤㉤〶㘲晡㔶㍢㡡挵ㄸ〵㠲㝥㠲㈲〱ㄱ㘸㤴〸〶〸〶〱㐴晥昷攰㤲㜴㐷㔶㘹㘵㔳㉢慦㙡攵㡡㔶慥㙡㘵愹㤵㉤慤㝣㐹㉢慦㘹㘵㕢㉢㕦搶捡㔷搰㈶㐹挵晥㝥㉤㑥㤷㡦慤摣昱㡤戱㕦捦㍦扢昰挴晦晦昱攰敦晥㜳㜰ㅦㅡ㍤ㅣ㑦㙡捥㌷慦㠲搴㥡㔴㝣㘴昲㌰晦㙤捦ㄵ㘰ち敢愸昵㠰㌵㌵㔵㍤㝡搸扣捦搴戹慣っ攴户㄰捡〸摡づ㕡㡦搸㙥搵扢慡㜰㜷敢㡣ㄹ挸收挶㑤挴㜵㌳㕥摤慤〶㙦搸扡㜲㌹㌴㐳㜹戰扤慥㌹㐸㐷户㘵戰㤵っ搴晢㙥㙢敦㜶挱慣搵攵昴㌵㍢慡㝥㘳㕢戵戳攴㝢慢摤㙢㑦晡昲搱㐶㙤挷㡣愶㈱搴㌶搴搸ㅤ慢㡣慡愲㜹㡤捦慥㜹㠱㜴搵昴㈶㥣㈵扢㜲㐵晡换㤲㈲㔱㔶搵㔲㙦㘴㔵捣昵ㄳ㡢㉥ㄶち㙥慤摥㤱㉥戵ㅥ扣ㄶ㠲㤹㘵ㄵ昳㕤㤷㝥戸戹㘲慥搶攴㑤㉤㑤愲㜷愲攲㐰㑢昱㐹慦㔲て㘶㍤㌷昴扤㕡㙢捤㜴㜵挳㠴愴愹㥥昱慡㌲㥦捦㈹愱〰㠱摢搷㈷㐴敥㥥敥扣愰㄰㤱㐲㌱ㄹ昹㤶㔶戲㥢㍣㠷搵㘱ㄵ㌵㐹㥡搴摥扣捤㘰㥣慦㤲㌱ㄹㅣ㤸㕡ㄳ昵〷㕦晡搶㙤㠶㙤㘰敥戵㙤慣㘹愳昱敡ㅦ摣㤰㙥㜸摡㜴慢㌵改㘷㙡㍦挱ㄹㄹ挳〰晡㜵〸㠴慥扢㐷㔵㈷慥㠹㑤晤慡㕤つ搷ち㙢搲扥戴ㄶ愲っㅡ戲㔸攴搶㜶㈴攳〶ㄴㄹ晢〹㐶〱㑡愵㕣㘱㡣㡤ち㈵愴㥣㑥改㤴挱换㉤㠲㥣晤㕡㜸㜹搰㍡㘹搷㐲ㄹ〹攵㘱ぢㄸ㠹戴㥡㐲摦㄰㐹搴㌷㉢㤱挲ㄸ戳㘶㐱愵愶敤㠶㥢㑤扥敤攰㤲㠸㠸昶㘴挱慥㤳〵ㄴ〵慤昲㈰㠳搷㐰㌴㙤搲㈰扢㜱㡡㠸挸〶ㄹ㥡ㅤ㈳户ㄲㄹ摢㘷挸〸戴㑦ㄳ㈱㕢ㅦ敥㉥㈳㐸散㥤㐴捡㑥㕤昹㜱㑦㥡㙤㘵换㐷搲散㐶㙣㥣㜱ㄳ挱捤〴户㄰ㅣ〰㄰扦㠶㠴愳㤴㐳扥㌵ㄹ㙦挰戳㜱㉢挱ㅢ〱㈰㥦っ捡㥣㔸㔴搱㠶摡㠹ㅤ挹㜶㐳戰㤳㤵㔱ㅣ㠹㈲㕡挶つ㍢㜳挸㔱㠸㡥慤捥摤愱㙢昳㑡挷扥愵㍢㙤愶㤷㐳㡡捣㘸㥡㕥敢㌶㑤搳ㅢ挱愶㍤敡慤摢搱搵ㄸ㈷㜸ㄳ㐰挹戸㠳㄰捡㠵〶敦捥㉣㝡㥡㤴慦ぢ戳㈸㌲㠶㝡㔴昰㌱㈱昳〸㤰㈱攴㍡㡥㉦㝢㌶㌴捤挱〹敢㜵㙦㐳ㅦ敡捥摦㌱搲摢昴收㥥摥愱扦攸㘵㕡搱㜷㠲扤挴㉦扢敡㤸扢㔰㙤扣㠵攰㙥㠰㌶ㅤ挳搳昷换昵ㄴ㈸戳搸㐹㘱㙥㍦扤㉥捡捡㕤搹㕣㤷㑡〳つ㕡㉢愶㝦㐹㠶昰㘰捣捦挱ㄶ昶㝣㕦搶㜰愸慤慡〲㥥㕦㙥㙥㉤っ㑥晡㥥挳昲㍤ㅢ㌹㜸㕤㈸㠶㝣㕥敢换戵搹挸ㄹ戶㘶捡攷㤴愲ㅣ敡攰晢扡ぢ㠹㔴愷㔶昲㘲扦散昳攵㥥㈴改㐱㤲扣つ摢㙡摣〳〰㈹㈱晥扢慢㐴㌹挴㘶晦愰㥡戵㕡慣昴昰㘵㥣㑥摡㝣㠸ㅤ㜲㘴㈰㜲搸捥挰㝦㄰っ㌹换戶搳㄰ㄶ〳捥㤲昴㉢昰㉤搸㌵㔹㡡摣戲ㄴ㌵㝢戲攲㜵㈲㉢晡晡㍡捥搳ㄹ晥㌵㐵㈷㙤㔲㈲㤳摢㌳㉢㌳捥攲㑤愲愲ㅢ㤲㐲㈵挳㌵搴㤰㐰愴㍣戶摤ㄳ㌱㍤㠸㤸㝢戱㜱挶㘱㠲㈹㠲㈳〰晡捦㈰㘹㜶扡昱っ㠷昵㙦搰愵㕤㉥攷㡡㐴㠳㜲ㄱ扥搸㔵㔸ㅤ攵㙢摥㑥昰〰㐰㥢昹㐳〷㘴〶㈱㉡㤴愷〸㔱㠵㌱慣ぢ戶扣㑡ㅡ搸㘷㈱戰㌴㕢て㐲捦㘱㘴㘹挸㥡昳捥㝡攱㥣ㅤ慣㈳ㄲ㌵㙡挵㤹㐷搶愴ぢ敡昲㘱晢戴㤵㜹敢敢戲㙡㔸换㕥ㅤ愲㙤㝥㙥㌷ㅣ捣戱ㅤ戰㈵搵搹㕣ㄳ㐸扤㥤㡦㌱㠴挰㑥㉢㝦㉢扤戱㍢昲㝥昳搰㌷摣摣搱ㄵ㍢慣挹〱㉢㘲㍡收㡢ㄶ㜶ㄱ㤱㠳㙡扦戵戲收㑢㌹㌷㘴㥤昲敤㙡捤㜶㈵㤱〱ㅢ㤳挱扡〵㜹〹㔱㠲㈵㡦㌱㐰捦ㅤ戲㔶㝣搳つ搶㑤〶ㄴ㌷昷户㍣愹戰㠸㙥捤搸㙥㠰搷㈸㉣㌲㍦㙣㉤慦㜹㔷ㄱ戱慤㍢敥㈹㜳㍤搸ㄵ㔸㈱搱㐷㐹愱㐶㘸㐲搳㐴㔱㉢昶㡡ㅦㅥ挸㜳㌹昲㕥㥥㐰攱㉡愷搳㘷㥥愱扤㘹搷挷㌱ㅡ摡改㥣搳㈰愲㐷㡤挲扥㑣㈹㑣㑥㌵㡥戱捦㍢〱ㅥ㍡㜵㝥扥ㄹ㤹㝢㐵㌱㙢㥤㕥晥っㄹ慦挸愲ㄱ〸愱㡦㙥㕦㐴㉡㉣㈳攵㠰〳㠱㜱㍥戵㤳㕦挹㔲㙤㐸㝤晢㥡搹㤳㠸㈴つ㕡ぢ收慡慣㈱ㅥ敤㤸攱扥攸㠱㘶慣㘳搶㠲戸㙥搶㜳ㅣ㤳愴㐵戲㕣慥㤸愴攰改㝡攸㥤戱㕤挳〲㔰昴ㄷㄷ㤹搷㔰㘴㕥㔳㐵㠳搶㌹㠶〶㔵㥥㘳㜹㤷㑣摦づ搷ㅣ扢㔲攴〳挳㜷扢㠲㈶挱攴㤴扣㐹㑡㘴挶㜸㥢㌵㝦ㅥ㈶㕢㌰〹㜴㑦㐲㡥㜲敢㠸㝥㔰慥㈶ち昸㈷㝡㜴㉣㐱挰㈸㑦愹昱㙥㡣愶慢摢ㄱ㄰㌹㉡㕤㑦敥㘰㕣㝦〲㈵㤱㄰㈲搶㌳㐸〴㕥挱㤴㤰愷㡢扢㘰㥤㜷敤㄰搸㈳挶㑥摡攱㕣〰㤴〳㈰慢㡥户〷ㄵ㔶㔳㥤㈶ㅡ㕡攱昶捥慡ㄶ㌵㜱㕢㘷㝤㕡㙦扣㜹㡢敡㐸愳愴ㄴ挹㜶㡤㤴㘶搹㘲㡥扢㐹搵〸愵戸ㄳ㙤㈳戲摣愶捤㝤愷ㄴ㜹〵㡡㐹搱㑣捥㜸㡦㈲ㄴ〴㝡㘳ㅤ㐵㥦㝤㌶㜹愴㈲㌶戴〱㑡搴㔳㔱搹㔰ㅣㄲ㥣挷戵㤳慡㉣挵㑦攰敦㝤㜱㜶戱ㅥ戶搴㤸搷㐶攳㥡改㕡㙤搱㠵㤵㔰㌱晤敡㉥㘱㘹慣㉤搲㌰㡡㍢㝢搵晥搱昶愶ㄸ㌱㘶㐳㠶㐵㌲晣挰㘰㐳㌰㔷㉡愲㑡敢㙣㠸㕢摤㈸㉥昲改㡣㌴㕤㠵㠱攵戰㍡㈷㌷㤴ㄹ搶戴攴㐷㔵㠷挶㘹㔱挹㔱挳㥡㕥つ愰搲㐳捡昱㌸愷ㄸ摣戰捥搱㉤㠵㑢っ㄰扢㜱㙥愹ㄲ㈲戴摢ㄸ㠰㈷㠳摤㠳ㅤ散㐸ㄴ㍡愱㜵㐶〹㕡挸㈰摣搶㐵㤰㜷㝡挴㈸〴愹愵搲敦㑥㠸㉦㍣换昴昵ㄳ戹㈴ㄳ㌳ㄱ挳㕤ㄹ搶〳㤰㥢㡥㑣㤲㡢㐶㤳㠰㜹㈴搹㤴搰ㅡ㑣捡㘸㘲っ搱攴昳㐳摣攲㘱㉣㙢㤸㙣㔳挳㍤户搰㠶㌶慤㙤敥戳收摤㑡慤㕥㤵㑡ㄵ㈷戲㕡㘹攴㕤㠱㉦㜵〵㌰攲愶㡣㝤㠹㌷㘵ㅥ㐷㈹㉥㤹㐸敡摤敥㌶㑥愰扢ㄲ㜲ㄸ㈳㔲㝤っ㐰㘶戸攵㔴㐰慣攳㥥〲敤挳晤捤ぢっ敡昲ㅣ㐴㕡㐷ㄱ㘵搹〲敥攳㌵愲挸㡡摢㔲捤ㄶ扣〵㡦㌶㝢慡攸戴ㅤㄵ敤ちㅣ㘱㥤㤱挰㉢ㄴ㘰㡣昴挸ㅤㅣ㈴㜷㍤㡥敥㕥㝦㐲㍤收慥〳ㄵち〳㠲㌱㕥㥥㠲㜲搸㔵㌰ㄲつ㙥慤㘹㜵ぢ㐶㝦㘹㜹ㅢ搳〰㠲㘱㘰ㅡ戴㘸ㄹㄹ㌸戳挸㙦㙦攰摣㡥㔶ㄹㄱ搲㜴㌰㤵㌱捡㔱㌸散㠱㌴㜰ㄳて搲㉢ㅥ㤴㔰㌸愶㉥㠶㈵㜷ㄳ㈷ㅣㅣ㠱㍣晦愶戶挲㈵㌳挴昵ㄷ昷㐰㕢昱㜴戵㑡㜳ㄷ晥戹㕤㠱㔵㕣摤㠸捣搱戱戶㑢㔹㙡㑤戴敦敥㙣慢㠸㉦ぢㅥ㤹㥢㍣㙤㠶㤵戵攵㜰㌳扡戸搵㉢㐹攸㍦㠴㍦㘲换户搳㘶捥扢扣㠸扡挱扤㉦㕤㜱扤慢慥㥡㤷ㅥ昰搶ㅦ㈸〴㔷㈸晢㌹挹㔲敥捦昸愷㤲㤶搳晦ㅤ㈳敥㘴摡ㅣ愰改㈰攱㌸㉡㐵搲㘰ㅣ昹っ㍡㠱敤摥戸㌵㐰㍡ㄹ㙢愳ㄳ㈵〸昶〸挵扤昴慡ㄱ㡡昸㌷愰㤵挴ㄲㅤ挹戱攷㕦〳敢㡢ㅦ愰㠴〸挷㜳㉣㐶昴㌷㈱㤷㠱㍡㈵挸攳㉢ㅥ扣㄰昲昷㠳愵㠴㥢户㘴愷扦〲㌳㡢敦户愳攸㌶愲攸㝢ㅤ㈸ㄲ扣〶愲昸昷㈱㘴㤲愴㌳㍣晢戲〲攱㕣搳摥〱昴㌵扦昰晢㌷㍣㠰㉥挴挴愱㙣㌴㠴摡敥挲㜳挳㐴攸敢㌰ㄱㄸ扣㔷㈶挲ㄹ㘴〴愳昸㤱㠹㄰晢㐰ㄶ㔱戰扤㠹挰搸㕥㠶㈱㤸ち戵愶摣ㅡ㍣㠱摤攴搰㍦㜶ㅡㄷ㙦㘵㠰㜸㍥㤴㔶㌰ぢ㡦搴捤㥤挵㑢愶㙦㍡〷㔴昹㈹㕦㐲㤹昹㉢戸挹慤扡戰挷挱㉤㙢㔴愷㉤㝣ㄵ㠹㤷㝤捦㥦戲戳晢敢挰㔴㤴㈲昷扤㈸㡡挲㉢昰㤴〸㥥ㅢ㜲ㅦㅥ晢收愹晦㜹散愹ㄳ扣慤ㄶ搳慡㝥て昲扤㠴散㘹㑦㈰愸㥢扡㈸㜲㈳㍦捣㌹㠳㑦㤴散昵㥡㥣㌱㝤㘵〵〵㠶㤳㘴㈳挲㑢ㄱ㘶㐴㝣扢挱挴挴扤㠷挸挴㥣㙣㜳㜷慡て㥢㤴㡢㜰㌲㌵㜱攵搳㑢挲㠶愲慢㈲敢搱摡搴扦つ㔵昴㌲㈷搲㙡㈵昲搴挹㈴挴户摡㜵摤㔱敡扡攸㈰挳戰㝦㈲愵㄰㝦㈰㠵愴て㌲扣㄰愰愴搴㌹㘴昴㝢〱㌲㈲㙢敤㈱㕥晡〳昶㠴㠰㙣㕣晡敢昱㈳ㄶ散㈲戰㤸昸攲㝢㍤搱搲ㄶ㑤㔴ㄳ㐳戵捡愶㔹㐶㐶ㅤ㕥㔸㌰㤵㤴慥㈰㤳㈴晤〸㜲㍢㜶㐷昱㈵㐳㑥ㄴ㜸㡢ㄸ㕢㜷攸㙢㉢㌹て扡㜵摣晣㠰㥥㈹㈸㠵攱敥㘷㌱づ愴㉡㐶ㄷ㌵㉤㐵㐵㠴挳㔱戶搱㘹㈰慥㠲捥㜲て攰㔴㡡攰ㅦ扦ㄴ㘲晤㐴㜳攸ㅢ摢㙢愸攳摣㝥㉣㤰㍦搸㕦户㘵㌰㌶摥㑡㡥㠱㠴摤㔱慢㘲㜴㍤晣㍣扡㜰搱㌹㘱㌴戳敡㔹ㅣ挵㥦㠴戳晡戴づ晤捦攸戵攲慣ぢ散捤㌰㜶㡢晥㝦㍦ち戶搵晦㠲戱㌷㠵挸て挴ㄹ㍥攸㡣㥦㙣ㅢ戲攱㡥挰戳㡤攰㡤㍡ㄸㅢ㉡换㤰㜷㤴㕢挶挷慢㔱戵㤲攰昰㝢攵摢慦㐶㌴晡搲戶ㅤ攸㉡〰ㄹㅢ搲扦〶ㄱ搴戵㝦慢摣㑡㑥户㠵て愲攳搸ㄹ扢攲㝢㠱㘷㠵攳换〸晡㡥昳摢㌳ぢ㌶捦戴昸㙡扢㔰扢ㄳ㍢㌱昸㈱昴㌹扢〸㠱㝤㔶㠶慦㔶㉣㤲㤱㠵㥤㐵㌲昸ㅤ搲㐸㉡扣㐴敤㄰摣㘰㍤㕣㌷㙢昸㜴㜵ㄱ扥捥㤰㐵扢㐲搹㐵ㅥ攷昶ㅢㅡ摣㍡摣搱㝡ㅦ晣㐱戲㌶㠹攰㤸㕡挲〷㍦挴㝤㙤摦㠳搶戶昱摡〲戶散捤攷㔶搲㕦〰㑥㜷昶㤶㔶㤲攱㍢昹㐵㜲挹㈸ㄳ攲搲晥〹晣摤戹㠳㤶愳㡤㠲捥攳て扡改〸㥢愸挱㝤戶㠳攸昷㐵㜴ㄵ搳〴昸ㄹ㘶㥣攱㠳愰㤷㡦慣㈸扥㠴㘵㤱〱㤰捦ㄵ㉡〰摤愹晡昹慤愸㝡攴㈱昶㐴ㄲ㍣㘳㤰ㅣ㑢攲㌹㌴攴㜶㐵换〶㑢㜰搹㐲㥤㈵㤰㌷㤲ㅥ挸攷〴捦ㄲ㙡㈲㥦㐷㠷挶㐴㙣㤴㜶㥦挸攷戶㥡㠸愰ㄵ愰ㄶ㥡ㅥ㝦㈴搱㈲㐶つ搵㠶㐳攰ㄲ㜸〰㈳㠹㌲ㄹ愶㝣愴搰㈹㐴㌱㠶ㅦ㄰㐵㐸晦ㄵ晦㝤改挴捦㕥㘴晡敤〹愱㈴㈲慡㕡㔷㐱㠹愸㔶昱搹昴㉡㝣㤴㜶㕦挵㘷戶㕡挵〸㠵㈵㘷㘲㠴〰㐳㝤愲㡣㍦㙡㔵㜵㘴戸愱晣㠹㡢〴昸戵捣㘲挴㐴㠹敡㝢ㄵㄹ昴攵捥慢㔶搷㤰㐹晡敡摣㠸㡣慦㝣㤴愱挴ㅢ㤱㜴敡ㄴ㈲慦㙣㈱㔲㡦㐵㈷㜶挷敥ち㈱㠱㈵昱戳搹慥戲扤搰㘳愸㕦㝣㍣㐱捣改搳挹㈷㔴㕡ㅣ㝣〲㘱㐴愶㈹〹㠹ㅢ㈹㍥㤶㌴晥捥㜷㥢扥㔳㔴㈰㠱㝡愲挶㈴㌸搵昸改愴昱ㄱ㝣㥥愵摡攴㜸㤵㠰改愵愴㌱〹㔳㌵㝥㉡㘹晣㥢㈳〷ㅡ㡤ㄳ㍡㡣㐶搶㐹㈴ㄹ㐶慦㍡〶愴㍥搵ㅥ㐶㜳摤愲㈲ㅤ戰愲㘲㡡㔰ㄵ㐳慥㈹㔵㍡㠸㕢㈱㍥㍥㤶㕥挰㈵㈷摣〵㠱戴㡤晥㥦〹昳戸晣㌴㘷㠶㈶扥㠵摥㐰搴搹㌷搴ㄳ㍢ㄷ慣㐵ㅦ〵晤搶㝣㠰挳㔵㜵㔷㤱〸散㠲㝣戴扦摢㜸攷㌳㙣挸收㝥㈴搱㌲㡤㤷㐹㝡搳㈲㉡挲㤲ㄷㅦ㐹㌰㥢㝢戲㐹㌳挶ㄳ㐰づ挴㈴㈰㌳挶㤳㠰㔱㐴㘶㡣〵㈳攴㝦挵摣ㅦ㘱挵㐷〹㥥〲㈸〹㌲㍢改愰昰㌴挰㜰昲㝦慣ㄸ摦㔰㡥ㄳ㑤㍣㤶扣㉣㑤㐶挶挷搹攱ㄳ〰㝤昰攳㡡㤸〸㑢挶㈷㔱㤲㝥㈹〵㠷㝡改愷㔸昱㘹㠲捦〰㤴㜴㑥㜶挷扢挶㌵昵愸挲晥〹㕤挵㤳〴昸ㄹ㥦㡤㌳㝣搰戹て敦敡㙥㌴昳㑣㥣㝣攱㡦㤸㘷换愷晣て攲搳晣㑤㉥扡て晦㘷ㄲ㕤㔹昸㜹敤㥤扤㡤㐵㈶愰㜱慥㝥敢搸散㔷㌰づ搷搵っ愵㜰㐴㉡㤵愲㔶㄰挴㌷ㄷ㉣㍣扣㠱㙦㌹慥㉡㠴㈰つ愸ち㌷慥㌸㠱〲攳㥦搹㤴㌸㈶㥥㡣㝦攱ㄳ㔱慢㌶昱㕦攳っㅦ〴昱慡扡㕦㡥扢㈷㉦㈴慥㔵㠵摤昶㐲攲㕦㔵慣愵㕦昸㉣〷㔳挸㐲愶㔵㉢ㄱ㘹㡡㠶㥥㐳㘶愸㙦㤸㜳㝢〴㍦敤㥡愸㕣慣㕥扣昸㠷攱晣昸挱晣晢摦㍢昸散㑢晦昱慢㘷㝥晥㡦挷晦敦㑦捦㍦晦昳晦㝤收挵㍦晤㜰昵昸㑦㕥㜸攱挷て㝤昹挵㕦敤户扥愲㝤昷てぢ㕦㜹㝣敡捡攳㡦㕡攷敦㌹昵昸〷㉥㍦㍣戵㜴挳㐴㕦㕦㝦晦摤愳㍦扤攵慤㈳㑦㍥晡㝤昱愳㕦摣散ち戵㕣扣愰㜵ㅡ㕣戶㥡挶ㄷ㤱挱㌴㌸攳搷㜴ㅡ㕣慥摡愸搵㜸愳㘶㔰㔰㠴㜳㠳ㄳ㔰ㄵ㘶㙢挵挰㕦〰攵换戳摡 | D30: 㜸〱敤㕣㕢㙣ㅣ㔷ㄹ摥㌳摥㔹敦慣敤搸㡤搳㑢㑡㘹つ愵ㄴ敡攰挶㘹㐳〹㄰㠲㉦捤慤㑥散挶㑥ち〲戴ㄹ敦㥥㠹愷搹㤹㜱㘷㘶㥤戸ㄴ戵㠲㤶㡢戸㔴攲㈶ち攵愲㠲㉡昱挰敤㠵晢ぢㄲㄲ〸ㄵ㠹〷㜸㐰㐲愲㈰〴ㄲ㈰ㄴ〹ㅥ㜸㐰㠲敦㍢㌳戳㍢扢敢ㅤ扢摢ㄶ㕣攴㤳敥敦㌳攷㌶攷㥣晦㝡晥晦㑣㜳㈲㤷换晤ㅢ㠹㝦㤹昲捣摣戰戸ㅥ㠴搲㤹㤸昱㙡㌵㔹〹㙤捦つ㈶愶㝣摦㕣㥦戳㠳戰てつち㘵ㅢ昵㠱㕥づ散〷㘵戱扣㈶晤〰㡤昴㕣慥㔸㌴㌴搴㜳㄰晥㐶㤲〷㠳扤〶昳〰㑢㌳搳昳换昷㘳搴挵搰昳攵扥戱㜳㔱摦挳㤳㤳ㄳ㤳ㄳ㜷摣㌹㜹㘸㘲晦扥戱㤹㝡㉤慣晢昲戰㉢敢愱㙦搶昶㡤㉤搴㤷㙢㜶攵ㅥ戹扥攴㕤㤴敥㘱戹扣晦㡥㘵昳捥㌷㑣摥㜹昰愰㜵攸搰ㅢ〶昱敡摣改㤹改〵㕦㕡挱ぢ㌴愶捥㈹摦㌹㉢㉢㌶搷㈶愵㙦扢ㄷ㈶㘶愶昱㕦㙡晥㜸扡㙢㘲㜱㐵捡㤰慦㤶扥㜴㉢㌲㌰搰㜱挰㤹ち㠲扡戳捡捤㌳㥣愳㔸㙡挵っ㐲摤㤹㤱戵㥡攱㈴愳ㄶ㥤㜹散㕤捤㕣ㅦ㜴ㄶ愵ㅢ搸愱扤㘶㠷敢〵㘷〹〳㔵㠷㥣戳㠱㍣㘳扡ㄷ攴㘹搳㤱扡㜳慣㙥㔷昳㔱捡昵摤㥡っ㤱㥥㤸㕡晥挴㔴攰捣慣㤸扥㥡㔱挰㡤挹㘸㝢搴慦戴戶扤戹晢戸㥣扡㝡〳挷扣愵㝢㍢搴㥣㌳晤㐶换昱敥㉤攳挵户捥攰昶敥敤㔳㝢搴摡攷戵摤晢愸慤㙣㙤㉤〶㘲晡㔶㍢㡡挵ㄸ〵㠲㝥㠲㈲〱ㄱ㘸㤴〸〶〸〶〱㐴晥敦攰㤲㜴㐷㔶㘹㘵㔳㉢㉦㙢攵㡡㔶慥㙡㘵愹㤵㉤慤㝣㐱㉢慦㘸㘵㕢㉢摦慦㤵㉦愲㑤㤲㡡晤晤㕡㥣㝥㜷收㙢㡦扦攷ㅢ㑦㥦晣昲摡愱㝦扣敥捦昷晣㜶㜰ㄷㅡ摤ㅢ㑦㙡搶㌷㉦㠱搴㥡㔴㝣㘰㘲㍦晦㙤捥ㄵ㘰ち敢愰㜵㤷㌵㌹㔹㍤戸摦扣挳搴戹慣っ攴户㄰捡〸摡づ㕡昷搹㙥搵扢愴㜰㜷挳戴ㄹ挸收挶㡤挷㜵搳㕥摤慤〶㉦摢戸㜲㌱㌴㐳㜹㝤㝢㕤㜳㤰㡥㙥㡢㘰㉢ㄹ愸昷摤搸摥敤㥣㔹慢换愹换㜶㔴晤昲戶㙡㘷挱昷㤶扢搷ㅥ昵攵〳㡤摡㡥ㄹ㑤㐱愸慤愹戱㍢㔶ㄹ㔵㐵昳ㅡ㥢㔹昱〲改慡改㡤㍢ぢ㜶攵愲昴ㄷ㈵㐵愲慣慡愵㕥捤慡㤸敢挷攷㕤㉣ㄴ摣㕡㝤㘵扡搴扡晢㜲〸㘶㤶㔵捣㜷㔵晡攱晡㤲戹㕣㤳搷戴㌴㠹摥㠹㡡扤㉤挵㐷扤㑡㍤㤸昱摣搰昷㙡慤㌵㔳搵㌵ㄳ㤲愶㝡捡慢捡㝣㍥愷㠴〲〴㙥㕦㥦㄰戹摢扡昳㠲㐲㐴ち挵㘴攴敢㕡挹㙥攲っ㔶㠷㔵搴㈴㘹㔲㝢搵㈶㠳㜱扥㑡挶㘴㜰㘰㙡㑤搴ㅦ㝣改㙢㌶ㄹ戶㠱戹ㄷ户戱愶㡤挶慢扦㝢㑤扡攱㜱搳慤搶愴㥦愹晤〴㘷㘴っ〳攸㔷㈰㄰扡敥ㅥ㔵㥤戸㉣搶昵㑢㜶㌵㕣㈹慣㐸晢挲㑡㠸㌲㘸挸㘲㤱㕢摢㤱㡣慢㔰㘴散㈶ㄸ〵㈸㤵㜲㠵㍤㙣㔴㈸㈱攵㜴㑡愷っ㕥㙥ㄱ攴散搷挲换㠳搶㔱扢ㄶ捡㐸㈸て㕢挰㐸愴搵ㄴ晡㠶㐸愲扥㔹㠹ㄴ挶ㅥ㙢〶㔴㙡摡㙥戸摥攴摢づ㉥㠹㠸㘸㐷ㄶ㙣㍢㔹㐰㔱搰㉡て㌲㜸つ㐴搳㈶つ戲ㅢ愷㠸㠸㙣㤰愱搹㌱㜲㉢㤱戱㝤㠶㡣㐰晢㌴ㄱ戲昵晥敥㌲㠲挴摥㐹愴散搴㤵ㅦ㜷愴搹㐶戶㝣㈴捤慥挶挶ㄹ搷㄰㕣㑢㜰ㅤ挱㕥〰昱㐷㐸㌸㑡㌹攴㕢㤳昱㌲㍣ㅢ㌷㄰扣ㅣ〰昲挹愰捣㠹㐵ㄵ㙤愸慤搸㤱㙣㌷〴㍢㔹ㄹ挵㤱㈸愲㘵摣戰㌳㠷ㅣ㠵攸搸敡摣ㅥ扡㌶慦㜴散慢扢搳㘶㝡㌹愴挸㡣愶改戵㙥搲㌴扤ㄱ㙣摡愳摥扡〹㕤㡤㌱㠲㔷〰㤴㡣㔷ㄲ㐲戹搰攰摤㥡㐵㑦㤳昲㈵㘱ㄶ㐵挶㔰㡦ち㍥㈶㘴ㅥ〱㌲㠴㕣挷昱㘵挷㠶愶㌹㌸㙥扤攴㙤攸㝤摤昹㍢㐶㝡㥢摥摣搱㍢昴ㄷ㍤㐷㉢晡㘶戰㤷昸㑤㔷ㅤ㜳ぢ慡㡤㔷ㄳ摣ち搰愶㘳㜸晡㝥慥㥥〲㘵ㄶ㍢㈹捣敤愶搷㐵㔹戹㑢敢慢㔲㘹愰㐱㙢挹昴㉦挸㄰ㅥ㡣ㄳ戳戰㠵㍤摦㤷㌵ㅣ㙡慢慡㠰攷㤷㙢㕢ぢ㠳愳扥攷戰㝣挷㐶づ㕥ㄲ㡡㈱㥦搷晡㜲㙤㌶㜲㠶慤㤹昲㌹愵㈸㠷㍡昸㡥敥㐲㈲搵愹㤵扣搸㉦晢㝣戹㈳㐹㝡㤰㈴慦挵戶ㅡ户〱㐰㑡㠸㕦㜵㤵㈸晢搸散㜵慡㔹慢挵㑡て㕦挶改愴捤㠷搸㈱㐷〶㈲㠷敤㌴晣〷挱㤰戳㘸㍢つ㘱㌱攰㉣㐸扦〲摦㠲㕤㤳愵挸㉤㑢㔱戳㈳㉢㕥㈲戲愲慦慦攳㍣㥤攱㕦㔳㜴搲㈶㈵㌲戹㍤戳㌲攳㉣摥㈴㉡扡㈱㈹㔴㌲㕣㐳つ〹㐴捡㘳摢ㅤㄱ搳㠳㠸戹ㅤㅢ㘷散㈷㤸㈴㌸〰愰晦ㅣ㤲㘶慢ㅢ捦㜰㔸晦ㅡ㕤摡攵㜲慥㐸㌴㈸ㄷ攱㌳㕤㠵搵㐱扥收昵〴㜷〱戴㤹㍦㜴㐰㘶㄰愲㐲㜹㡡㄰㔵ㄸ挳㍡㘷换㑢愴㠱㕤ㄶ〲㑢㌳昵㈰昴ㅣ㐶㤶㠶慣㔹敦戴ㄷ捥摡挱㉡㈲㔱愳㔶㥣戹㙦㐵扡愰㉥ㅦ戶㑦㕢㤹户扡㉡慢㠶戵攸搵㈱摡㑥捣㙥㠷㠳㌹戶〳戶愴㍡㥢㙢〲愹户昳㌱㠶㄰搸㘹攵㙦愵㌷㜶㑢摥㙦ㅥ晡㠶㥢㍢扡㘴㠷㌵㌹㘰㐵㑣挷㝣搱挲㉥㈲㜲㔰敤户㤶㔶㝣㈹㘷㠷慣㘳扥㕤慤搹慥㈴㌲㘰㘳㌲㔸㌷㈷㉦㈰㑡戰攰㌱〶攸戹㐳搶㤲㙦扡挱慡挹㠰攲晡敥㤶㈷ㄵㄶ搱慤㘹摢つ昰ㅡ㠵㐵收㠷慤挵ㄵ敦ㄲ㈲戶㜵挷㍤㘶慥〶摢〲㉢㈴晡㈸㈹搴〸㑤㘸㥡㈸㙡挵㕥昱挳〳㜹㉥㐷摥换ㄳ㈸㕣攵㜴晡捣㌳戴㌷敤晡㌸㐶㐳㍢㥤㜳ㅡ㐴昴愸㔱搸㤷㈹㠵挹愹挶㈱昶㜹㈳挰挹㘳㘷㑦㌴㈳㜳捦㉢㘶慤搳换㥦㈱攳ㄵ㔹㌴〲㈱昴搱敤㡡㐸㠵㘵愴ㅣ㜰㈰㌰捥愷㜶昲㉢㔹慡つ愹㙦㔷㌳㝢ㄴ㤱愴㐱㙢捥㕣㤶㌵挴愳ㅤ㌳摣ㄵ㍤搰㡣㜵捣㕡㄰搷捤㜸㡥㘳㤲戴㐸㤶㡢ㄵ㤳ㄴ㍣㔵て扤㔳戶㙢㔸〰㡡晥攲㈲昳㌲㡡捣换慡㘸搰㍡挳搰愰捡㜳㉣敦㠲改摢攱㡡㘳㔷㡡㝣㘰昸㙥㕢搰㈴㤸㥣㤲㌷㐹㠹捣ㄸ㙢戳收捦挲㘴ぢ㈶㠰敥〹挸㔱㙥ㅤ搱て捡搵㐴〱晦㐴㡦㡥㈵〸ㄸ攵㈹㌵摥㡣搱㜴㜵㍢〲㈲㐷愵㉢挹ㅤ㡣㉢て愳㈴ㄲ㐲挴㝡〶㠹挰㉢㤸ㄲ昲㜴㜱ㄷ慣戳慥ㅤ〲㝢挴搸㔱㍢㥣つ㠰㜲〰㘴搵昱昶㝡㠵搵㔴愷昱㠶㔶戸愹戳慡㐵㑤摣搸㔹㥦搶ㅢ慦摡愰㍡搲㈸㈹㐵戲㔹㈳愵㔹㌶㤸攳㜶㔲㌵㐲㈹敥㐴摢㠸㉣户㘹㜳摦㈹㐵㥥㠷㘲㔲㌴㤳㌳摥愲〸〵㠱摥㔸㐷搱㘷㥦㑤ㅥ愹㠸つ㙤㠰ㄲ昵㔴㔴㌶ㄴ㠷〴㑦攰摡㐹㔵㤶攲㈷昰昷慥㌸㍢㕦て㕢㙡捣换愳㜱捤㔴慤㌶敦挲㑡愸㤸㝥㜵㥢戰㌴搶ㄶ㘹ㄸ挵㥤扤㙡晦㘸㝢㔳㡣ㄸ戳㈱挳㈲ㄹ㝥㘰戰㈱㤸㉢ㄵ㔱愵㜵㌶挴慤㙥ㄴㄷ昹㜴㑡㥡慥挲挰㘲㔸㥤㤵㙢捡っ㙢㕡昲愳慡㐳攳戴愸攴愸㘱㑤㉤〷㔰改㈱攵㜸㥣㔳っ㙥㔸㘷攸㤶挲㈵〶㠸摤㌸户㔰〹ㄱ摡㙤っ挰㤳挱昶挱づ㜶㈴ち㥤搰㍡愳〴㉤㘴㄰㙥敢㈲挸㍢㍤㘲ㄴ㠲搴㔲改㙦㐷挴㘷㥦㘰晡敡㤱㕣㤲㠹㤹㠸攱慥っ敢〱挸㑤㐷㈶挹㐵愳㐹挰㍣㤲㙣㑡㘸つ㈶㘵㌴㌱㠶㘸昲昹㈱㙥昱㌰㤶㌵㑣戶愹攱㥥㕢㘸㐳㥢搶搶㜷㔹㈷摣㑡慤㕥㤵㑡ㄵ㈷戲㕡㘹攴㙤㠱㉦㜵〵㌰攲愶㡣㝤㠹㌷攵〴㡥㔲㕣㌲㤱搴扢摤㙤ㅣ㐱㜷㈵攴㌰㐶愴晡ㄸ㠰捣㜰换愹㠰㔸挷㍤〵摡㠷扢㥢ㄷㄸ搴攵㌹㠸戴㡥㈲捡戲㌹摣挷㙢㐴㤱ㄵ户愵㥡捤㜹㜳ㅥ㙤昶㔴搱㜱㍢㉡摡ㄶ㌸挲㍡㈳㠱㔷㈸挰ㄸ改㤱㍢㌸㐸敥㑡ㅣ摤扤昲戰㝡捣㕤〱㉡ㄴ〶〴㘳扣㍣〵攵戰慢㘰㈴ㅡ摣㕡搳敡ㄶ㡣晥搲昲㌶愶〰〴挳挰㌴㘸搱㌲㌲㜰㘶㤰摦摣挰戹〹慤㌲㈲愴改㘰㉡㘳㤴愳㜰搸〳㘹攰㈶ㅥ愴㤷㍣㈸愱㜰㡦扡ㄸ㤶摣㑤ㅣ㜷㜰〴昲晣㙢摡ちㄷ捣㄰搷㕦摣扤㙤挵㔳搵㉡捤㕤昸攷戶〵㔶㜱㜵㈳㌲㐷昷戴㕤捡㔲㙢愲㝤㜷㜳㕢㐵㝣㔹昰挰散挴㜱㌳慣慣㉣㠶敢搱挵慤㕥㐹㐲晦㈱晣ㄱㅢ扥㥤㌶㜳摥攵㐵搴㌵敥㝤改愲敢㕤㜲搵扣昴㠰户晥㐰㈱戸㐲搹捦㐹㤶㜲晦挶㍦㤵戴㥣晥〳㡣戸㤵㘹㜳㠰愶㠳㠴攳愸ㄴ㐹㠳㌱攴㌳攸〴戶㝢攳搶〰改㘴㑦ㅢ㥤㈸㐱戰㐳㈸敥㠵ㄷ㡣㔰挴昷㠱㔶ㄲ㑢㜴㈴挷㥥㍦つ搶ㄷ摦㐳〹ㄱ㡥攷㔸㡣攸慦㐰㉥〳㜵㑡㤰挷㔷㍣㜸㈱攴晦〷㑢〹㌷㙦挸㑥晦〵㘶ㄶ摦㙤㐷搱㡤㐴搱㜷㍡㔰㈴㜸つ㐴昱敦㐹㘴㤲愴㌳㍣晢㥣〲攱㕣搳捥〱昴㐵扦昰晢㍦㍣㠰捥挵挴愱㙣㌴㠴摡㙥挱㜳挳㐴攸敢㌰ㄱㄸ扣㔷㈶挲㈹㘴〴愳昸㤱㠹㄰晢㐰收㔱戰戹㠹挰搸㕥㠶㈱㤸ち戵愶摣ㅡ㍣㠱㕤攳搰㍦㜶ㅣㄷ㙦㘵㠰㜸㍥㤴㔶㌰〳㡦搴戵㥤挵ぢ愶㙦㍡㝢㔵昹㌱㕦㐲㤹昹㑢戸挹慤扡戰挷昵ㅢ搶愸㑥ㅢ昸㉡ㄲ㉦晢㡥㍦㘵㙢昷搷㠱愹㈸㐵敥㝢㔱ㄴ㠵攷攱㈹ㄱ㍣㌷攴摥扤攷敢挷㝥昷攰愳㐷㜸㕢㉤愶㔵晤㌶攴㝢〹搹搳㥥㐰㔰㌷㜵㔱攴㙡㝥㤸㜳ち㥦㈸搹慢㌵㌹㙤晡捡ちちっ㈷挹㐶㠴㤷㈲捣㠸昸戶㠳㠹㠹㝢て㤱㠹㌹搱收敥㔴ㅦ㌶㈹ㄷ攱㐴㙡攲捡愷㤷㠴つ㐵㔷㐵搶愳戵愹㝦ㄳ慡攸㌹㑥愴搵㑡攴愹㤳㐹㠸㙦戴敢扡㠳搴㜵搱㐱㠶㘱晦㐴㑡㈱晥㐰ち㐹ㅦ㘴㜸㈱㐰㐹愹㌳挸攸户〳㘴㐴搶摡㐳扣昴〷散〸〱搹戸昴搷攳㐷㉣搸㐵㘰㌱昱挵昷㝡愲愵㉤㥡愸㈶㠶㙡㤵㑤戳㠸㡣㍡扣戰㘰㌲㈹㕤㐲㈶㐹晡〱攴戶散㡥攲㑢㠶㥣㈸昰ㄶ㌱戶敥搰搷㔶㜲敥㜶敢戸昹〱㍤㔳㔰ち挳摤捤㘲ㅣ㐸㔵㡣㉥㙡㕡㡡㡡〸㠷愳㙣愳搳㐰㕣〵㥤攵敥挵愹ㄴ挱㍦㝥㈹挴晡昱收搰㔷户搷㔰挷戹晤㔸㈰㝦戰扦㙥捣㘰㙣扣㤵ㅣ〳〹扢愵㔶挵攸㝡昸㔹㜴攱愲㜳挲㘸㘶搵戳㌸㠸㍦〹㘷昵㘹ㅤ晡㥦搱㙢挵㔹攷搸㥢㘱散ㄶ晤晦㌶ㄴ㙣慡晦〵㘳㙦ち㤱㙦㡦㌳㝣搰ㄹ㍦搹㌴㘴挳ㅤ㠱㘷ㅢ挱ㅢ㜵㌰㌶㔴㤶㈱敦㈸户㠸㡦㔷愳㙡㈵挱攱昷捡户㕦㡤㘸昴愵㙤㍢搰㔵〰㌲㌶愴㍦つㄱ搴戵㝦慢摣㑡㑥户㠵㜷愰攳㥥㔳㜶挵昷〲捦ち挷ㄶㄱ昴ㅤ攳户㘷ㄶ㙣㥥㈹昱㤵㜶愱㜶㌳㜶㘲昰㕤攸㜳㝡ㅥ〲晢戴っ㕦愸㔸㈴㈳ぢ㕢㡢㘴昰㍢愴㤱㔴㜸㠹摡㈱戸捡扡户㙥搶昰改敡㍣㝣㥤㈱㡢戶㠵戲㡢㍣捥敤㌷㌴戸㜵戸愳㜵て晣㐱戲㌶㠱攰㤸㕡挲㍢摥挵㝤㙤摦㠳搶戶昱摡〲戶散捤攷㔶搲㥦〲㑥户昶㤶㔶㤲攱㍢昹㐵㜲挹㈸ㄳ攲搲晥ㄱ晣摤扡㠳㤶愳㡤㠲捥攳て扡改〸ㅢ慦挱㝤戶㠵攸昷㜹㜴ㄵ㔳〴昸ㄹ㘶㥣攱㠳愰㤷㡦慣㈸扥㠰㘵㤱〱㤰捦ㄵ㉡〰摤愹晡挹㡤愸㝡攴㈴㝢㈲〹㥥㌱㐸㡥㈵昱㌹㌴攴㜶㐵换〶㑢㜰搹㐲㥤㈵㤰㌷㤲ㅥ挸攷〴捦ㄲ㙡㈲㥦㐱㠷挶㐴㙣㤴㜶㥦挸愷㌷㥡㠸愰ㄵ愰ㄶ㥡ㅥ㝦㈴搱㈲㐶つ搵㠶㐳攰ㄲ㜸〰㈳㠹㌲ㄹ愶㝣愴搰㈹㐴㌱㠶敦ㄱ㐵㐸扦㠸晦㍥㝢攴攷捦㌰晤昵㠸㔰ㄲㄱ㔵慤慢愰㐴㔴慢㜸㍣扤ちㅦ愵摤㔷昱搱㡤㔶㌱㐲㘱挹㤹ㄸ㈱挰㔰㥦㈸攳㡦㕡㔵ㅤㄹ㙥㈸㝦攲㍣〱㝥㉤戳ㄸ㌱㔱愲晡㕥㐲〶㝤戹昳慡搵㘵㘴㤲扥㍡㌷㈲攳㉢ㅦ㘵㈸昱㐶㈴㥤㍡㠵挸㉢㕢㠸搴㘳搱㠹摤戱摢㐲㐸㘰㐹晣㙣戶慢㙣㉦昴ㄸ敡ㄷㅦ㐸㄰㜳晣㜸昲〹㤵ㄶ〷㥦㐰ㄸ㤱㘹㑡㐲攲㐶㡡昷㈷㡤扦昵敤愶敦ㄴㄵ㐸愰㥥愸㌱〹㑥㌵㝥㉣㘹㝣〰㥦㘷愹㌶㌹㕥㈵㘰㝡㌶㘹㑣挲㔴㡤ㅦ㑤ㅡ晦攵挰摥㐶攳㠴づ愳㤱㜵ㄲ㐹㠶搱慢㡥〱愹㑦戵㠷搱㕣户愸㐸〷慣愸㤸㈲㔴挵㤰㙢㑡㤵づ攲㔶㠸㡦㡦愵攷㜰挹〹㜷㐱㈰㙤愳晦㘷挲〹㕣㝥㥡㌵㐳ㄳ摦㐲慦㈱敡散ㅢ敡㠹㥤ぢ搶扣㡦㠲㝥敢㐴㠰挳㔵㜵㕢㤱〸散㠲㝣戴扦㥢㜸攷㌳㙣挸收㝥㈴搱㌲㡤㤷㐹㝡搳㈲㉡挲㤲ㄷ敦㑤㌰㥢㝢愴㐹㌳挶挳㐰づ挴㈴㈰㌳挶㈳㠰㔱㐴㘶てぢ㐶挸晦㡡戹摦换㡡昷ㄱ㍣ち㔰ㄲ㘴㜶搲㐱攱㌱㠰攱攴晦㔸㌱戶愶ㅣ㈷㥡㜸㌰㜹㔹㥡㡣㡣て戰挳〷〱晡攰挷ㄵ㌱ㄱ㤶㡣て愱㈴晤㔲ちづ昵搲て戳攲㈳〴ㅦ〵㈸改㥣散㤶㜷㡤㙢敡㔱㠵㝤っ㕤挵㈳〴昸ㄹ㡦挷ㄹ㍥攸摣㠷㌷㜵㌷㥡㜹㈶㑥扥昰㐷捣戳攵㔳晥扢昱㘹晥㍡ㄷ摤㠷晦㌳㠹慥㉣晣扣昶挶摥挶㈲ㄳ搰㌸㔷扦㔵㙣昶昳ㄸ㠷敢㙡㠶㔲㌸㈲㤵㑡㔱㉢〸攲㥢ぢㄶㅥ摥挰户ㅣ㔶ㄵ㐲㤰〶㔴㠵ㅢ㔷ㅣ㐱㠱昱〹㌶㈵㡥㠹㈷攳㤳㝣㈲㙡搵㈶㝥㉡捥昰㐱㄰慦慡晢晤㜱昷攴㠵挴戵慡戰摢㕥㐸晣慢㡡㤵昴ぢ㥦攰㘰ち㔹挸戴㙡㈵㈲㑤搱搰攷㤰ㄹ敡ㅢ收摣敥挳㑦扢㉣㉡攷慢攷捦晦㜳㌸㍦㜶㝤晥㙤㙦ㅤ㝣攲搹㥦晤晥攳扦㝣攷攱㍦晤敢挹㈷㝦昹㠷㡦㍦昳慦ㅦ㉥ㅦ晥挹㔳㑦晤昸攴ㄷ㥦昹晤㙥敢㑢摡户晦㌹昷愵㠷㈶㉦㍥昴㠰㜵昶戶㘳て扤晤晥㝢㈷ㄷ慥ㅡ敦敢敢敦扦㜵昴愷搷扤㘶攴㤱〷扥㉢㝥昴敢㙢㕤愱㤶㡢ㄷ戴㑥㠳换㔶搳昸㍣㌲㤸〶㘷晣愲㑥㠳换㔵ㅢ戵ㅣ㙦搴㌴ち㡡㜰㙥㜰〲慡挲㙣慤ㄸ昸て㍡ㄴ戴挷 | E30: 㜸〱敤㕣㕢㙣㈴㔷㤹敥㔳敥㙡㜷戵敤戱㌳㥥㕣㈶㠴挴㤰㠴㤰㜸攸㡣㈷ㄹ㐲搸㥤㥤昵㈵㜳㐹㍣㘳㘷散㤹㠰〰昵㤴扢㑦㡤㉢搳㔵攵㔴㔵㝢挶搹㐸㠹搸㘴戳㉢㙥ㄲ㌷ㄱ㐸〰㐵〸〹㈱㜱㤱㄰㈴扢扣㐴摡㕤㔶㈸㐸㍣挰〳ㄲて〱㜱㜹〰愱㤱㜸攱〱〹扥敦㔴㔵㜷㜵户扢散㜴ㄲ㜰㔶㍥㤳晥㝤敡摣敡㥣昳㕦捦晦㥦㑡㑥攴㜲戹扦㈰昱㉦㔳㥥㤹ㅢ㤶㌶㠲㔰㍡攵㔹慦㕥㤷搵搰昶摣愰㍣敤晢收挶扣ㅤ㠴〳㘸㔰愸搸愸て昴㑡㘰㍦㉡㡢㤵㜵改〷㘸愴攷㜲挵愲愱愱㥥㠳昰㌷㤶㍣ㄸ散㌵㥣〷㔸㥥㥤㔹㔸㜹ㄸ愳㉥㠵㥥㉦て㑣㥣㡢晡ㅥ㤹㥡㉡㑦㤵敦扡㝢敡摥昲挱〳ㄳ戳㡤㝡搸昰攵ㄱ㔷㌶㐲摦慣ㅦ㤸㔸㙣慣搴敤敡〳㜲㘳搹扢㈸摤㈳㜲攵攰㕤㉢收摤敦㤹扡晢昰㘱敢摥㝢摦㌳㡣㔷攷㑥捦捥㉣晡搲ち㕥愷㌱㜵㑥昹敥㌹㔹戵戹㌶㈹㝤摢扤㔰㥥㥤挱㝦愹昹攳改㥥昲搲慡㤴㈱㕦㉤㝤改㔶㘵㘰愰攳㤰㌳ㅤ〴つ㘷㡤㥢㘷㌸挷戰搴慡ㄹ㠴扡㌳㉢敢㜵挳㐹㐶㉤㍡ぢ搸扢扡戹㌱散㉣㐹㌷戰㐳㝢摤づ㌷ち捥㌲〶慡㡤㌸㘷〳㜹挶㜴㉦挸搳愶㈳㜵攷㜸挳慥攵愳㤴ㅢ戸㉤ㄹ㈲㍤㌱戵晣昲㜴攰捣慥㥡扥㥡㔱挰㡤挹㘸㝢捣慦戶户扤戹昷戸㥣扡㝡〳挷扣戵㜷㍢搴㥣㌳晤㘶换挹摥㉤攳挵户捦攰捥摥敤㔳㝢搴摥攷昶摥㝤搴㔶戶户ㄶ㐳㌱㝤慢ㅤ挵㘲㡣〲挱㈰㐱㤱㠰〸㌴㑡〴㐳〴挳〰㈲晦㐷㜰㐹扡㈳慢戴㡡愹㔵㔶戴㑡㔵慢搴戴㡡搴㉡㤶㔶戹愰㔵㔶戵㡡慤㔵ㅥ搶㉡ㄷ搱㈶㐹挵挱㐱㉤㑥㑦㝦晤愶晦晤昵て㕥㝡攰㍢捦㙤㤴ㅦ挹晦捦挵攱㍤㘸昴㘰㍣愹㌹摦扣〴㔲㙢㔱昱愱昲㐱晥摢㥡㉢挰ㄴ搶㘱敢ㅥ㙢㙡慡㜶昸愰㜹㤷愹㜳㔹ㄹ挸㙦㈳㤴㌱戴ㅤ戶ㅥ戲摤㥡㜷㐹攱敥㠶ㄹ㌳㤰慤㡤㥢㡣敢㘶扣㠶㕢ぢ摥戲㜹攵㔲㘸㠶昲晡捥扡搶㈰㕤摤㤶挰㔶㌲㔰敦扢戱戳摢㌹戳摥㤰搳㤷敤愸晡慤ㅤ搵捥愲敦慤昴慥㍤收换㐷㥡戵㕤㌳㥡㠶㔰㕢㔷㘳㜷慤㌲慡㡡收㌵㌱扢敡〵搲㔵搳㥢㜴ㄶ敤敡㐵改㉦㐹㡡㐴㔹㔳㑢扤㥡㔵㌱搷㑦㉥戸㔸㈸戸戵昶昶㜴愹㜵摦攵㄰捣㉣㙢㤸敦㥡昴挳㡤㘵㜳愵㉥慦㘹㙢ㄲ扤ㄳㄵ晢摢㡡㡦㜹搵㐶㌰敢戹愱敦搵摢㙢愶㙢敢㈶㈴㑤敤㤴㔷㤳昹㝣㑥〹〵〸摣㠱〱㈱㜲㜷昴收〵㠵㠸ㄴ㡡挹挸搷戵㤳㕤昹っ㔶㠷㔵搴㈵㘹㔲扢㘵㡢挱㌸㕦㈵㘳㌲㌸㌰戵㈶敡て扥昴㥤㕢っ摢挴摣ㅢ摢㔸搳挶攳搵摦户㉥摤昰㠴改搶敡搲捦搴㝥㠲㌳㌲㐶〱昴㉢㄰〸㍤㜷㡦慡㑥㕣ㄶㅢ晡㈵扢ㄶ慥ㄶ㔶愵㝤㘱㌵㐴ㄹ㌴㘴戱挸慤敤㑡挶㔵㈸㌲昶ㄲ㡣〳㤴㑡戹挲㍥㌶㉡㤴㤰㜲㍡愵㔳〶㉦户〹㜲昶㙢攳攵㘱敢㤸㕤て㘵㈴㤴㐷㉤㘰㈴搲㙡ち㝤㈳㈴㔱摦慣㐶ち㘳㥦㌵ぢ㉡㌵㙤㌷摣㘸昱㙤ㄷ㤷㐴㐴戴㉢ぢ㜶㥣㉣愰㈸㘸㤷〷ㄹ扣〶愲改㤰〶搹㡤㔳㐴㐴㌶挸搰散ㄸ戹㥤挸搸㍥㐳㐶愰㝤㥡〸搹晡㘰㙦ㄹ㐱㘲敦㈶㔲㜶敡挹㡦扢搲㙣㌳㕢㍥㤲㘶㔷㘳攳㡣㙢〸慥㈵戸㡥㘰㍦㠰昸つ㈴ㅣ愵ㅣ昲敤挹㜸ぢ㥥㡤ㅢ〸摥ち〰昹㘴㔰收挴愲㡡㌶搴㜶散㐸戶ㅢ㠱㥤慣㡣攲㐸ㄴ搱㌲㙥摡㤹㈳㡥㐲㜴㙣㜵敥っ㕤㥢㔷㍡昶ㅤ扤㘹㌳扤ㅣ㔲㘴㐶搳昴㕡户㘸㥡摥〸㌶敤㔳㙦摤㠴慥挶〴挱摢〰㑡挶摢〹愱㕣㘸昰㙥捦愲愷㐹昹愶㌰㡢㈲㘳愸㑦〵ㅦㄳ㌲㡦〰ㄹ㐲慥敢昸戲㙢㐳搳ㅣ㥣戴摥昴㌶昴㠱摥晣ㅤ㈳扤㐳㙦敥敡ㅤ晡㡢㕥愵ㄵ㝤㌳搸㑢晣扣愷㡥戹ㄵ搵挶㍢〸㙥〳攸搰㌱㍣㝤扦㕡㑦㠱㌲㡢㥤ㄴ收昶搲敢愲慣摣攵㡤㌵愹㌴搰戰戵㙣晡ㄷ㘴〸て挶挹㌹搸挲㥥敦换㍡づ戵㌵㔵挰昳换戵敤㠵挱㌱摦㜳㔸扥㙢㈳〷㙦ち挵㤰捦㙢〳戹づㅢ㌹挳搶㑣昹㥣㔲㤴㐳ㅤ㝣㔷㙦㈱㤱敡搴㑥㕥散㤷㝤扥摣㤵㈴㝤㐸㤲摢戱慤挶ㅤ〰㤰ㄲ攲愷㍤㈵捡〱㌶㝢㤷㙡搶㙥戱搲挳㤷㜱㍡改昰㈱㜶挹㤱愱挸㘱㍢〳晦㐱㌰攲㉣搹㑥㔳㔸っ㌹㡢搲慦挲户㘰搷㘵㈹㜲换㔲搴散捡㡡㌷㠹慣ㄸㄸ攸㍡㑦㘷昸搷ㄴ㥤㜴㐸㠹㑣㙥捦慣捣㌸㡢户㠸㡡㙥㐸ち㤵っ搷㔰㔳〲㤱昲搸㜶㔷挴昴㈱㘲敥挴挶ㄹ〷〹愶〸づ〱攸㍦㠲愴搹敥挶㌳ㅣ㌶戸㑥㤷㜶愵㤲㉢ㄲつ捡㐵昸㜲㑦㘱㜵㤸慦㜹㌷挱㍤〰ㅤ收てㅤ㤰ㄹ㠴愸㔰㥥㈲㐴ㄵ挶戰捥搹昲ㄲ㘹㘰㡦㠵挰搲㙣㈳〸㍤㠷㤱愵ㄱ㙢捥㍢敤㠵㜳㜶戰㠶㐸搴戸ㄵ㘷ㅥ㕡㤵㉥愸换㠷敤搳㔱收慤慤挹㥡㘱㉤㜹つ㠸戶㤳㜳㍢攱㘰㡥敤㠰㉤愹捥收㥡㐰敡敦㝣㡣㈱〴㜶㕡昹㕢改㡤摤㤶昷㥢㠷扥搱搶㡥㉥摢㘱㕤づ㔹ㄱ搳㌱㕦戴戰㡢㠸ㅣ搴〶慤攵㔵㕦捡戹ㄱ敢戸㙦搷敡戶㉢㠹っ搸㤸っ搶捤换ぢ㠸ㄲ㉣㝡㡣〱㝡敥㠸戵散㥢㙥戰㘶㌲愰戸戱户敤㐹㠵㐵㜴㙢挶㜶〳扣㐶㘱㤱昹㔱㙢㘹搵扢㠴㠸㙤挳㜱㡦㥢㙢挱㡥挰ち㠹㍥㑡ち㌵㐲ㄳ㥡㈶㡡㕡戱㕦晣昰㐰㥥换㤱昷昲〴ち㔷㌹㥤㍥昳っ敤㑤扢㍥㡥搱搰㑥攷㥣㠶ㄱ㍤㙡ㄶづ㘴㑡㘱㜲慡㜱㉦晢扣ㄷ攰晥攳㘷㑦戶㈲㜳慦㈹㘶慤搳换㥦㈱攳ㄵ㔹㌴〳㈱昴搱敤㠹㐸㠵㘵愴ㅣ㜰㈰㌰捥愷㑥昲㉢㔹慡つ愹㙦㑦㉢㝢っ㤱愴㘱㙢摥㕣㤱㜵挴愳ㅤ㌳摣ㄳ㍤搰㡣㜵捣㝡㄰搷捤㝡㡥㘳㤲戴㐸㤶㑢㔵㤳ㄴ㍣摤〸扤㔳戶㙢㔸〰㡡晥攲㈲昳㌲㡡捣换慡㘸搸㍡挳搰愰捡㜳㉣敦㠲改摢攱慡㘳㔷㡢㝣㘰昸㙥㐷搰㈴㤸㥣㤲㌷㐹㠹捣㤸攸戰收捦挲㘴ぢ捡㐰㜷ㄹ㜲㤴㕢㐷昴㠳㜲㌵㔱挰㍦搱愷㘳〹〲㐶㜹㑡㡤㝦挴㘸扡扡ㅤ〱㤱愳搲㤵攴づ挶㤵挷㔱ㄲ〹㈱㘲㍤㠳㐴攰ㄵ㑣〹㜹扡戸ぢ搶㔹搷づ㠱㍤㘲散㤸ㅤ捥〵㐰㌹〰戲敡㜸㝢扤挲㙡慡搳㘴㔳㉢摣搴㕤搵愶㈶㙥散慥㑦敢㡤㕢㌶愹㡥㌴㑡㑡㤱㙣搵㐸㘹㤶㑤收戸㤳㔴㡤㔰㡡㍢搱㌶㈲换㙤摡摡㜷㑡㤱搷愰㤸ㄴ捤攴㡣㝦㔲㠴㠲㐰㙦慣愳攸戳捦㈶㡦㔴挴㠶㌶㐰㠹㝡㉡㉡ㅢ㠹㐳㠲㈷㜱敤愴㈶㑢昱ㄳ昸㝢㑦㥣㕤㘸㠴㙤㌵收攵昱戸㘶扡㕥㕦㜰㘱㈵㔴㑤扦戶㐳㔸ㅡ㙢㡢㌴㡣攲捥㝥戵㝦戴扤㈹㐶㡣搹㤰㘱㤱っ㍦㌰搸㄰捣㤵㡡愸搲㍡ㅢ攱㔶㌷㡢㡢㝣㍡㈵㑤㔷㘱㘰㈹慣捤挹㜵㘵㠶戵㉣昹㜱搵愱㜹㕡㔴㜲搴戰愶㔷〲愸昴㤰㜲㍣捥㈹〶㌷慣㌳㜴㑢攱ㄲ〳挴㙥㥣㕢慣㠶〸敤㌶〷攰挹㘰攷㘰〷㍢ㄲ㠵㑥㘸㥤㔱㠲ㄶ㌲〸户㝤ㄱ攴㥤㍥㌱ち㐱㙡愹昴㠷愳攲昳捦㌰㝤敤㘸㉥挹挴㑣挴㜰㔷㠶昵〰攴愶㈳㤳攴愲昱㈴㘰ㅥ㐹㌶㈵戴㠶㤳㌲㥡ㄸ㈳㌴昹晣㄰户㜸ㄸ换ㅡ㈵摢搴㜱捦㉤戴愱㑤敢ㅢ㝢慣㤳㙥戵摥愸㐹愵㡡ㄳ㔹慤㌴昲㡥挰㤷扡〲ㄸ㜱㔳挶扥挴㥢㜲ㄲ㐷㈹㉥㤹㐸敡摦敥㌶㡥愲扢ㄲ㜲ㄸ㈳㔲㝤っ㐰㘶戸攵㔴㐰慣敢㥥〲敤挳扤慤ぢっ敡昲ㅣ㐴㕡㔷ㄱ㘵搹㍣敥攳㌵愳挸㡡摢㔲捤收扤㜹㡦㌶㝢慡攸㠴ㅤㄵ敤〸ㅣ㘱㥤㤱挰㉢ㄴ㘰㡣昴挹ㅤㅣ㈴㜷㈵㡥敥㕥㜹㕣㍤收慥〰ㄵち〳㠲㌱㕥㥥㠲㜲搸㔵㌰ㄲつ㙥慤㘵㜵ぢ㐶㝦㘹㜹ㅢ搳〰㠲㘱㘰ㅡ戴㘸ㄹㄹ㌸戳挸㙦㙤攰摣㠴㔶ㄹㄱ搲㜴㌰㤵㌱捡㜱㌸散㠱㌴㜰ㄳて搲换ㅥ㤴㔰戸㑦㕤っ㑢敥㈶㑥㍡㌸〲㜹晥㌵ㅤ㠵㡢㘶㠸敢㉦敥晥㡥攲改㕡㡤收㉥晣㜳㍢〲慢戸扡ㄱ㤹愳晢㍡㉥㘵愹㌵搱扥扢戹愳㈲扥㉣㜸㘸慥㝣挲っ慢慢㑢攱㐶㜴㜱慢㕦㤲搰扦て㝦挴愶㙦愷捤㥣㜷㜹ㄱ㜵㥤㝢㕦扡攸㝡㤷㕣㌵㉦㍤攰慤㍦㔰〸慥㔰づ㜲㤲愵摣㕦昰㑦㈵㉤愷晦ㄷ㐶摣捥戴㌹㐰换㐱挲㜱㔴㡡愴挱〴昲ㄹ㜴〲摢扤㜹㙢㠰㜴戲慦㠳㑥㤴㈰搸㈵ㄴ昷挲敢㐶㈸攲㍦㠱㔶ㄲ㑢㜴㈴挷㥥㝦ㄵ慣㉦㕥㐴〹ㄱ㡥攷㔸㡣攸㙦㐳㉥〳㜵㑡㤰挷㔷㍣㜸㈱攴晦て㤶ㄲ㙥摥㤴㥤晥〶捣㉣㕥攸㐴搱㡤㐴搱昷扡㔰㈴㜸つ㐴昱敦晤挸㈴㐹㘷㜸昶㔵〵挲戹愶摤〳攸ㅢ㝥攱昷敦㜸〰㥤㡦㠹㐳搹㘸〸戵摤㡡攷愶㠹㌰搰㘵㈲㌰㜸慦㑣㠴㔳挸〸㐶昱㈳ㄳ㈱昶㠱㉣愰㘰㙢ㄳ㠱戱扤っ㐳㌰ㄵ㙡㑤戹㌵㜸〲扢挶愱㝦散〴㉥摥捡〰昱㝣㈸慤㘰ㄶㅥ愹㙢扢㡢ㄷ㑤摦㜴昶慢昲攳扥㠴㌲昳㤷㜱㤳㕢㜵㘱㡦敢㌷慤㔱㥤㌶昱㔵㈴㕥昶㕤㝦捡昶敥慦〳㔳㔱㡡摣昷愲㈸ち慦挱㔳㈲㜸㙥挸晤换扥㙦ㅣ晦挵愳㑦ㅥ攵㙤戵㤸㔶昵㍢㤰敦㈷㘴㑦㝢〲㐱摤搴㐵㤱慢昹㘱捥㈹㝣愲㘴慦搵攵㡣改㉢㉢㈸㌰㥣㈴ㅢㄱ㕥㡡㌰㈳攲摢〹㈶㈶敥㍤㐴㈶㘶戹挳摤愹㍥㙣㔲㉥挲㜲㙡攲捡愷㤷㠴つ㐵㑦㐵搶愷戵愹㝦ぢ慡攸㔵㑥愴摤㑡攴愹㤳㐹㠸㙦㜶敡扡挳搴㜵搱㐱㠶㘱晦㐴㑡㈱晥㐰ち㐹ㅦ㘴㜸㈱㐰㐹愹㌳挸攸㜷〲㘴㐴搶㍡㐳扣昴〷散ち〱搹扣昴搷攷㐷㉣搸㐵㘰㌱昱挵昷㝢愲愵㉤㥡愸㈶㠶㙡㤵㑤戳㠴㡣㍡扣戰㘰㉡㈹㕤㐶㈶㐹晡㈱攴戶敤㡥攲㑢㐶㥣㈸昰ㄶ㌱戶敥搰搷㔶㜲敥㜳ㅢ戸昹〱㍤㔳㔰ち挳摤换㘲ㅣ㐸㔵㡣㉥㙡㕡㡡㡡〸㐷愳㙣戳搳㔰㕣〵㥤攵敥挷愹ㄴ挱㍦㝥㈹挴晡挹搶搰㔷㜷搶㔰挷戹㠳㔸㈰㝦戰扦㙥捣㘰㙣扣㤵ㅣ〳〹扢慤㔶挵攸㝡昸㔹㜴攱愲㜳挲㘸㘵搵戳㌸㡣㍦〹㘷つ㘸㕤晡㥦搱㙢挵㔹攷搸㥢㘱散㌶晤晦㍥ㄴ㙣愹晦〵㘳㙦ち㤱敦㡦㌳㝣搰ㄹ㍦搹㌲㘴挳ㅤ㠱㘷ㅢ挱ㅢ㜵㌰㌶㔴㤶㈱敦㈸户㠴㡦㔷愳㙡㈵挱攱昷捡㜷㕥㡤㘸昶愵㙤㍢搴㔳〰㌲㌶愴㝦ㄵ㈲愸㘷晦㜶戹㤵㥣㙥ぢㅦ㐰挷㝤愷散慡敦〵㥥ㄵ㑥㉣㈱攸㍢挱㙦捦㉣搸㍣搳攲㉢㥤㐲敤㘶散挴昰㠷搰攷昴〲〴昶㘹ㄹ扥㕥戱㐸㐶ㄶ戶ㄷ挹攰㜷㐸㘳愹昰ㄲ戵㐳㜰㤵昵㘰挳慣攳搳搵〵昸㍡㐳ㄶ敤〸㘵ㄷ㜹㥣㍢㙦㘸㜰敢㜰㐷敢〱昸㠳㘴扤㡣攰㤸㕡挲〷㍥挴㝤敤摣㠳昶戶昱摡〲戶散捦攷㔶搲㥦〷㑥户昷㤶㜶㤲攱㍢昹㐵㜲挹愸㄰攲搲晥㔱晣摤扥㠳㤶愳㡤㠳捥攳て扡改〸㥢慣挳㝤戶㡤攸昷㜹㜴ㄵ搳〴昸ㄹ㘶㥣攱㠳愰㤷㡦慣㈸扥㠸㘵㤱〱㤰捦ㄵ慡〰扤愹晡搹捤愸㝡散㝥昶㐴ㄲ㍣㘳㤰ㅣ㑢攲ぢ㘸挸敤㡡㤶つ㤶攰戲㠵㍡㑢㈰㙦㈴㍤㤰捦〹㥥㈵搴㐴㍥㠷づ捤㠹搸㈸敤㍤㤱捦㙥㌶ㄱ㐱㉢㐰㉤㌴㍤晥㔸愲㐵㡣㍡慡つ㠷挰㈵昰〰挶ㄲ㘵㌲㑡昹㐸愱㔳㠸㘲っ㉦ㄲ㐵㐸㍦㡥晦扥㜲昴㐷㉦㌳晤晥愸㔰ㄲㄱ㔵敤慢愰㐴㔴慢昸㐴㝡ㄵ㍥㑡㝢慦攲㘳㥢慤㘲㡣挲㤲㌳㌱㐲㠰㤱〱㔱挱ㅦ戵慡〶㌲摣㔰晥挴㜹〲晣摡㘶㌱㘶愲㐴昵扤㠴っ晡㜲攷㔵慢换挸㈴㝤㜵㙥㐴挶㔷㍥捡㔰攲㡤㐸㍡㜵ち㤱㔷戶㄰愹挷愲ㄳ扢㘳㜷㠴㤰挰㤲昸搹㙣㑦搹㕥攸㌳搴㉦㥥㑥㄰㜳攲㐴昲〹㤵ㄶ〷㥦㐰ㄸ㤱㘹㑡㐲攲㐶㡡㝦㑢ㅡ㝦晢扢㉤摦㈹㉡㤰㐰㍤㔱㘳ㄲ㥣㙡晣㔴搲昸㄰㍥捦㔲㙤㜲扣㑡挰昴㑡搲㤸㠴愹ㅡ㍦㤹㌴晥摤愱晤捤挶〹ㅤ㐶㈳敢㈴㤲っ愳㔷ㅤ〳㔲㥦㙡㡦愲戹㙥㔱㤱づ㔹㔱㌱㐵愸㡡㈱搷㤵㉡ㅤ挶慤㄰ㅦㅦ㑢捦攳㤲ㄳ敥㠲㐰摡㐶晦捦㠴㤳戸晣㌴㘷㠶㈶扥㠵㕥㐷搴搹㌷搴ㄳ㍢ㄷ慣〵ㅦ〵㠳搶挹〰㠷慢摡㡥㈲ㄱ搸〵昹㘸㝦户昰捥㘷搸㤰慤晤㐸愲㘵ㅡ㉦㤳昴愷㐵㔴㠴㈵㉦㍥㥣㘰㌶昷㐴㡢㘶㡣挷㠱ㅣ㠸㐹㐰㘶㡣㈷〰愳㠸捣㍥ㄶ㡣㤱晦ㄵ㜳㝦㤸ㄵ晦㑡昰㈴㐰㐹㤰搹㐹〷㠵愷〰㐶㤳晦㘳挵挴扡㜲㥣㘸攲搱攴㘵㘹㌲㌲㥥㘶㠷㝦〷ㄸ㠰ㅦ㔷挴㐴㔸㌲晥〳㈵改㤷㔲㜰愸㤷㝥㠴ㄵㅦ㈵昸ㄸ㐰㐹攷㘴户扤㙢㕣㔳㥦㉡散攳攸㉡㥥㈰挰捦昸㐴㥣攱㠳捥㝤昸㠷摥㐶㌳捦挴挹ㄷ晥㠸㜹戶㝤捡㝦ㅦ㍥捤摦攰愲〷昰㝦㈶搱㤵㠵㥦搷摥摢摦㔸㘴〲ㅡ攷敡户㠶捤㝥つ攳㜰㕤慤㔰ち㐷愴㔲㈹㙡〵㐱㝣㜳挱挲挳ㅢ昸㤶㈳慡㐲〸搲㠰慡㜰攳㡡愳㈸㌰㍥挵愶挴㌱昱㘴㝣㥡㑦㐴慤摡挴捦挴ㄹ㍥〸攲㔵㜵㝦㌸敥㥥扣㤰戸㔶ㄵ㜶挷ぢ㠹㝦㔵戱㥡㝥攱㌳ㅣ㑣㈱ぢ㤹㜶慤㐴愴㈹ㅡ晡〲㌲㈳〳愳㥣摢㐳昸㘹㤷㐵昵㝣敤晣昹㍦㡤收㈷慥捦扦敦㥦㠷㥦㜹攵㠷扦晣攴㑦㍥㜸攴户㝦㝥昶搹㥦晣敡㤳㉦晦昹晢㉢㐷㝥昰晣昳晦㝤晦㤷㕥晥攵㕥敢换摡㜷晦㌴晦攵挷愶㉥㍥昶㠸㜵昶㡥攳㡦扤晦攱〷愷ㄶ慦㥡ㅣㄸㄸㅣ扣㙤晣晦慥㝢攷搸ㄳ㡦扣㈰㕥晡搹戵慥㔰换挵ぢ摡愷挱㘵慢㘹㍣㠷っ愶挱ㄹ扦愱搳攰㜲搵㐶慤挴ㅢ㌵㠳㠲㈲㥣ㅢ㥣㠰慡㌰摢㉢㠶晥ち敢敤戴㈱ | F30: 㜸〱敤㕣㕢㙣ㅣ搷㜹摥㌳摣㔹敥㉣慦ㄶ攵㡢ㅣ㕦ㄸ㍢㡥ㄳ㔳愵㐵搹慡敤戴慡捡㡢㜵㜱㈸㤱ㄶ㈹㌹搷慥㠶扢㌳攲㔸㍢戳昴捣㉣㈵扡〶㙣㈴㑥搳㈲㐹〳愴㑤㔱㌷㙥㙡戸愹㠱扥戴敥㑢㥡戴㜹㈹㔲愰㐱攲〰㜹㐸ㅥ㠲攴挱〹㡡昶愱㐵㈱愰㉦㜹〸㤰㝥摦㍦㌳扢戳扢摣㈱戵戶㕢扡攰㤱昷攷㤹㜳㥢㜳捥㝦㍤晦㝦挶㌹㤵换攵㝥㠵挴扦㑣㜹㘶敥㔸搹ち㐲换㥤㥥慦搷㙡㔶㈵㜴敡㕥㌰㍤敢晢收搶愲ㄳ㠴〳㘸㔰㈸㍢愸て昴㜲攰㍣㙢ㄵ换㥢㤶ㅦ愰㤱㥥换ㄵ㡢㠶㠶㝡づ挲摦㜸昲㘰戰搷㜰ㅥ㘰㜵㝥㙥㘹敤㘹㡣扡ㄲ搶㝤敢昰攴挵愸敦昱㤹㤹改㤹改㠷ㅥ㥥㜹㙣晡挸攱挹昹㐶㉤㙣昸搶㜱捦㙡㠴扥㔹㍢㍣戹摣㔸慢㌹㤵て㕢㕢慢昵㉢㤶㜷摣㕡㍢昲搰㥡昹昰愳㌳てㅦ㍢㘶㍦昶搸愳挳㜸㜵敥摣晣摣戲㙦搹挱摢㌴愶捥㈹㍦扣㘰㔵ㅣ慥捤戲㝣挷扢㍣㍤㍦㠷晦㔲昳挷搳㈳搳㉢敢㤶ㄵ昲搵㤶㙦㜹ㄵ㉢㌰搰㜱挸㥤つ㠲㠶扢挱捤㌳摣㤳㔸㙡挵っ㐲摤㥤户㙡㌵挳㑤㐶㉤扡㑢搸扢㥡戹㌵散慥㔸㕥攰㠴捥愶ㄳ㙥ㄵ摣㔵っ㔴ㅤ㜱㉦〴搶㜹搳扢㙣㥤㌳㕤㑢㜷㑦㌵㥣㙡㍥㑡戹㠱晢㤳㈱搲ㄳ㤳攵㑦捦〶敥晣扡改换㡣〲㙥㑣㐶摢㤳㝥愵扤敤扤扤挷攵搴攵つㅣ昳扥摥敤㔰㜳搱昴㥢㉤愷㝡户㡣ㄷ摦㍥㠳〷㝢户㑦敤㔱㝢㥦て昶敥㈳㕢搹摥㕡つ挵昴㉤㍢㡡挵ㄸ〵㠲㐱㠲㈲〱ㄱ㘸㤴〸㠶〸㠶〱㔴晥扦挱㈵改㡥慣搲捡愶㔶㕥搳捡ㄵ慤㕣搵捡㤶㔶戶戵昲㘵慤扣慥㤵ㅤ慤晣戴㔶扥㠲㌶㐹㉡づづ㙡㜱㝡昵昵搱㡢㡦㝥攲㝢戳㕦晥挹敢ㄷ扦晤戳㙦晦㘴㜸ㄴ㡤㥥㡣㈷戵攰㥢㔷㐱㙡㉤㉡㍥㍡㝤㠴晦㜶收ち㌰㠵㝤捣㝥挴㥥㤹愹ㅥ㍢㘲㍥㘴敡㕣㔶〶昲摢〸㘵ㅣ㙤㠷敤愷ㅣ慦㕡扦㉡戸扢㘳捥っ慣搶挶㑤挵㜵㜳昵㠶㔷つ摥戳㝤攵㑡㘸㠶搶敤㥤㜵慤㐱扡扡慤㠰慤慣㐰摥㜷㔷㘷户㡢㘶慤㘱捤㕥㜳愲敡㍢㍢慡摤㘵扦扥搶扢昶愴㙦㍤搳慣敤㥡搱㉣㠴摡愶㡣摤戵捡愸㉡㥡搷攴晣㝡㍤戰㍣㤹摥㤴扢散㔴慥㔸晥㡡㐵㤱㘸㔵㘵愹㌷戳㉡收晡愹㈵てぢ〵户㔶敦㐹㤷摡㡦㕦ぢ挱捣㔶ㄵ昳摤戰晣㜰㙢搵㕣慢㔹户戴㌵㠹摥㠹㡡㐳㙤挵㈷敢㤵㐶㌰㕦昷㐲扦㕥㙢慦㤹慤㙥㥡㤰㌴搵戳昵慡㤵捦攷㐴㈸㐰攰づっ㈸㤵㝢愰㌷㉦〸㈲㔲㈸㈶㈳摦搶㑥㜶搳攷戱㍡慣愲㘶㤱㈶戵昷敤㌰ㄸ攷㉢㌲㈶㠳〳㔳㙢愲晥攰㑢㍦戰挳戰㑤捣扤戳㡤㌵㙤㈲㕥晤攳㥢㤶ㄷ㥥㌶扤㙡捤昲㌳戵㥦攲㡣㡣㌱〰晤㍡〴㐲捦摤愳慡㔳搷搴㤶㝥搵愹㠶敢㠵㜵换戹扣ㅥ愲っㅡ戲㔸攴搶㜶㈵攳㈶ㄴㄹ〷〸㈶〰㑡愵㕣攱㈰ㅢㄵ㑡㐸㌹㥤搲㈹㠳㤷摢〴㌹晢戵昱昲戰㝤搲愹㠵㔶㈴㤴挷㙣㘰㈴搲㙡㠲扥ㄱ㤲愸㙦㔶㈲㠵㜱搰㥥〷㤵㥡㡥ㄷ㙥戵昸戶㡢㑢㈲㈲摡㤷〵㝢㑥ㄶ㔰ㄴ戴换㠳っ㕥〳搱㜴㐸㠳散挶㈹㈲㈲ㅢ㘴㘸㜶㡣摣㑥㘴㙣㥦㈱㈳搰㍥㑤㠴㙣㝤愴户㡣㈰戱㜷ㄳ㈹㍢昵攴挷㝤㘹戶㥤㉤ㅦ㐹戳㥢戱㜱挶㉤〴户ㄲ摣㐶㜰〸㐰晤ㅢ㈴ㅣ愵ㅣ昲敤挹㜸て㥥㡤㍢〸敥〴㠰㝣㌲㈸㜳㘲㔱㐵ㅢ㙡㌷㜶㈴摢㡤挰㑥ㄶ愳㌸ㄲ㐵戴㡣㥢㜶收㠸㉢㠸㡥慤捥扤愱㙢昳愲㘳摦摦㥢㌶搳换㈱㐵㘶㌴㑤慦㜵㠷愶改㡤㘰搳㍥昵搶摤攸㙡㑣ㄲ扣ㄷ愰㘴摣㐳〸攵㐲㠳㜷㜷ㄶ㍤㑤捡㜷㠵㔹ㄴㄹ㐳㝤㉡昸㤸㤰㜹〴挸㄰㜲㕤挷㤷㝤ㅢ㥡收攰㤴晤慥户愱て昷收敦ㄸ改ㅤ㝡㜳㕦敦搰㕦㜴㠳㔶昴扤㘰㉦昵搳㥥㍡收㍥㔴ㅢ敦㈷戸ㅦ愰㐳挷昰昴㝤愳㥥〲㌱㡢摤ㄴ收づ搰敢㈲㔶敥敡搶㠶㈵ㅡ㘸搸㕥㌵晤换㔶〸て挶㤹〵搸挲㜵摦户㙡㌸搴㔶愵㠰攷㤷㕢摢ぢ㠳㤳㝥摤㘵昹扥㡤ㅣ扣㉢ㄴ㐳㍥慦つ攴㍡㙣攴っ㕢㌳攵㜳㑡㔱づ㜵昰㐳扤㠵㐴慡㔳㍢㜹戱㕦昶昹㜲㕦㤲昴㈱㐹㍥㠸㙤㌵ㅥ〰㠰㤴㔰㍦敡㈹㔱づ戳搹慦㐹戳㜶㡢㤵ㅥ扥㡣搳㐹㠷て戱㑢㡥っ㐵づ摢㌹昸て㠲ㄱ㜷挵㜱㥢挲㘲挸㕤戶晣ち㝣ぢ㑥捤㉡㐵㙥㔹㡡㥡㝤㔹昱㉥㤱ㄵ〳〳㕤攷改っ晦㥡搰㐹㠷㤴挸攴昶捣捡㡣戳㜸㡢愸攸㠶愴㔰挹㜰つ㌵㈵㄰㈹㡦㙤昷㐵㑣ㅦ㈲收㐱㙣㥣㜱㠴㘰㠶攰㈸㠰晥㝤㐸㥡摤㙥㍣挳㘱㠳㥢㜴㘹㤷换戹㈲搱㈰㉥挲㌷㝡ち慢㘳㝣捤慦ㄳ㍣〲搰㘱晥搰〱㤹㐱㠸㠲昲ㄴ㈱㑡ㄸ挳扥攸㔸㔷㐹〳愳㌶〲㑢昳㡤㈰慣扢㡣㉣㡤搸ぢ昵㜳昵㜰挱〹㌶㄰㠹㥡戰攳捣㔳敢㤶〷敡昲㘱晢㜴㤴搵㌷㌶慣慡㘱慦搴ㅢ㄰㙤㘷ㄶ昶挲挱ㅣ摢〱㕢㔲捥收㥡㐲敡敦㝣㡣㈱ㄴ㜶㕡晣慤昴挶敥捡晢捤㐳摦㔸㙢㐷㔷㥤戰㘶つ搹ㄱ搳㌱㕦戴戱㡢㠸ㅣ㔴〷敤搵㜵摦戲ㄶ㐶散㔳扥㔳慤㌹㥥㐵㘴挰挶㘴戰㙥搱扡㡣㈸挱㜲㥤㌱挰扡㌷㘲慦晡愶ㄷ㙣㤸っ㈸㙥ㅤ㘸㝢㤲戰㠸㙥捦㌹㕥㠰搷〸ㄶ㤹ㅦ戳㔷搶敢㔷ㄱ戱㙤戸摥㈹㜳㈳搸ㄳ㔸㈱搱㐷㐹㔰愳㌴愵㘹慡愸ㄵ晢挵てて攴戹ㅣ㜹㉦㑦㈰戸捡改昴㤹㘷㘸㙦摡昵㜱㡣㠶㜶㍡攷㌴㡣攸㔱戳㜰㈰㔳ち㤳㔳㡤挷搸攷㐳〰㑦㥣扡㜰愶ㄵ㤹㝢㑢㌱㙢㥤㕥晥っㄹ㉦㘴搱っ㠴搰㐷㌷ㅡ㤱ち换㐸㌹攰㐰㘰㥣㑦㥤攴㔷戲愵つ愹㙦戴㤵㍤㠹㐸搲戰扤㘸慥㔹㌵挴愳㕤㌳ㅣ㡤ㅥ㘸挶扡㘶㉤㠸敢收敢慥㙢㤲戴㐸㤶㉢ㄵ㤳ㄴ㍣摢〸敢㘷ㅤ捦戰〱㠴晥攲㈲昳ㅡ㡡捣㙢㔲㌴㙣㥦㘷㘸㔰昲ㅣ慢㝥搹昴㥤㜰摤㜵㉡㐵㍥㌰㝣户㈷㘸ㄲ㑣㑥挹㥢愴㐴㘶㑣㜶㔸昳ㄷ㘰戲〵搳㐰昷㌴攴㈸户㡥攸〷攵㙡慡㠰㝦慡㑦挷ㄲ〴㡣㜸㑡㡤摦挴㘸扡摣㡥㠰挸㤱㜴㍤戹㠳㜱晤㜹㤴㐴㐲㠸㔸捦㈰ㄱ㜸〵㔳㐲㥥㉥敥㠲㝤挱㜳㐲㘰㡦ㄸ㍢改㠴ぢ〱㔰づ㠰慣ㅣ㙦㙦ㄷ慣愶㍡㑤㌵戵挲摤摤㔵㙤㙡攲慥敥晡戴摥㜸摦㌶搵㤱㐶㐹㈹㤲㥤ㅡ㠹㘶搹㘶㡥㝢㐹搵㈸㔱摣㠹戶㔱㔹㙥搳搶扥㔳㡡扣〵挵㈴㌴㤳㌳㝥㑢〸〵㠱摥㔸㐷搱㘷㥦㑤ㅥ愹㠸つ㙤㠰ㄲ昵㔴㔴㌶ㄲ㠷〴捦攰摡㐹搵㉡挵㑦攰敦搱㌸扢搴〸摢㙡捣㙢ㄳ㜱捤㙣慤戶攴挱㑡愸㤸㝥㜵㡦戰㌴搶ㄶ㘹ㄸ攱捥㝥戵㝦戴扤㈹㐶㡣搹㤰㘱㤱っ㍦㌰搸㄰捣㤵㡡愸搲㍡ㅢ攱㔶㌷㡢㡢㝣㍡㙢㤹㥥㘰㘰㈵慣㉥㔸㥢㘲㠶戵㉣昹〹改搰㍣㉤㡡ㅣ㌵散搹戵〰㉡㍤愴ㅣ㡦㜳挲攰㠶㝤㥥㙥㈹㕣㘲㠰搸㡤㜳换㤵㄰愱摤收〰㍣ㄹ散ㅤ散㘰㐷愲搰〹慤㌳㑡搰㐲〶攱戶㉦㠲扣搳㈷㐶㈱㐸㙤㐹晦㜵㐲晤搹㑢㑣㝦㝤㈲㤷㘴㘲㈶㘲戸㉢挳㝡〰㜲搳㤱㐹㜲搱㐴ㄲ㌰㡦㈴㥢〸慤攱愴㡣㈶挶〸㑤㍥㍦挴㉤ㅥ挶戲挶挸㌶㌵摣㜳ぢㅤ㘸搳摡搶愸㝤挶慢搴ㅡ㔵㑢㔴㜱㈲慢㐵㈳敦〹㝣挹ㄵ挰㠸㥢㌲昶㈵摥㤴㌳㌸㑡㜱挹㐴㔲晦㜶户㜱〲摤㐵挸㘱㡣㐸昵㌱〰㤹攱㤶㤳㠰㔸搷㍤〵摡㠷〷㕡ㄷㄸ攴昲ㅣ㐴㕡㔷ㄱ㘵搹㈲敥攳㌵愳挸挲㙤愹㘶㡢昵挵㍡㙤昶㔴搱㘹㈷㉡摡ㄳ㌸挲㍡㈳㠱㔷㈸挰ㄸ改㤳㍢㌸㐸敥㝡ㅣ摤扤晥扣㍣收慥〳ㄵ㠲〱挵ㄸ㉦㑦㐱㌹散㉡ㄸ㠹〶户搶戲扡ㄵ愳扦戴扣㡤㔹〰挵㌰㌰つ㕡戴㡣っ㥣㜹攴㜷㌶㜰敥㐶慢㡣〸㘹㍡㤸捡ㄸ攵〴ㅣ昶㐰ㅡ戸㠹〷改搵㍡㤴㔰㜸㔰㉥㠶㈵㜷ㄳ愷㕣ㅣ㠱敡晥㉤ㅤ㠵换㘶㠸敢㉦摥愱㡥攲搹㙡㤵收㉥晣㜳㝢〲慢戸扡ㄱ㤹愳〷㍢㉥㘵挹㥡㘸摦摤摢㔱ㄱ㕦ㄶ㍣扡㌰㝤摡っ㉢敢㉢攱㔶㜴㜱慢㕦㤲搰扦〵㝦挴戶㙦愷捤㥣昷㜸ㄱ㜵㤳㝢㕦扡攲搵慦㝡㌲㉦㍤攰慤㍦㔰〸慥㔰づ㜲㤲愵摣慦昰㑦㤲㤶搳晦ㄱ㈳敥㘶摡ㅣ愰攵㈰攱㌸㤲㈲㘹㌰㠹㝣〶㥤挰㜶㙦摥ㅡ㈰㥤ㅣ散愰ㄳㄱ〴晢㠴攲㕤㝥摢〸㐵晤〳搰㑡㘲㠹㡥攴搸昳搷挰晡敡㥢㈸㈱挲昱ㅣ㡢ㄱ晤扤挸㘵愰㑥〴㜹㝣挵㠳ㄷ㐲晥晦㘰㈹攱收㙤搹改㝦㠱㤹搵㌷㍡㔱㜴ㄷ㔱昴昷㕤㈸㔲扣〶㈲晣晢〴㌲㐹搲ㄹ㥥扤愱㐰㌸搷戴㝦〰㝤挷㉦晣晥ㅦㅥ㐰ㄷ㘳攲㄰ㅢつ愱戶晢昰摣㌴ㄱ〶扡㑣〴〶敦挵㐴㌸㡢㡣㘲ㄴ㍦㌲ㄱ㘲ㅦ挸ㄲち㜶㌶ㄱㄸ摢换㌰〴㔳愱搶㤴㕢㠳㈷戰㕢㕣晡挷㑥攳攲慤ㄵ㈰㥥て愵ㄵ捣挳㈳㜵㙢㜷昱戲改㥢敥㈱㈹㍦攵㕢㔰㘶晥㉡㙥㜲㑢ㄷ昶戸㝤摢ㅡ改戴㡤慦㈲昱戲敦晢㔳㜶㜷㝦ㅤ㤸㡡㔲攴扥㔷㐵㔵㜸ぢ㥥ㄲ挵㜳㐳敥㜷て晥捤愹㥦㍤晢攲〹摥㔶㡢㘹㔵㝦〰昹㝥㐲昶戴㈷㄰搴㑤㕤ㄴ戹㤹ㅦ收㥣挵㈷㑡捥㐶捤㥡㌳㝤戱㠲〲挳㑤戲ㄱ攱愵〸㌳㈲扥扤㘰㘲攲摥㐳㘴㘲㑥㜷戸㍢攵挳㈶㜱ㄱ㑥愷㈶㉥㍥扤㈴㙣愸㝡㉡戲㍥慤㑤晤㜵愸愲ㅢ㥣㐸扢㤵挸㔳㈷㤳㔲㝦摢愹敢㡥㔱搷㐵〷ㄹ㠶晤ㄳ㈹㠵昸〳㈹㈴㝤㤰攱㠵〰㤱㔲攷㤱搱ㅦ〴挸㠸慣㜵㠶㜸改て搸ㄷ〲㔶昳搲㕦㥦ㅦ戱㘰ㄷ㠱挵挴ㄷ摦敦㠹㤶戶㘸愲㥡ㄸ慡ㄵ㥢㘶〵ㄹ㌹扣戰㘰㈶㈹㕤㐵㈶㐹晡㔱攴㜶敤㡥攲㑢㐶摣㈸昰ㄶ㌱戶敥搲搷㔶㜲ㅦ昷ㅡ戸昹〱㍤㔳㄰㠵攱ㅤ㘰㌱づ愴ㄲ愳㡢㥡㤶愲㈲挲戱㈸摢散㌴ㄴ㔷㐱㘷㜹㠷㜰㉡㐵昰㡦㕦ち戱㝥慡㌵昴捤㥤㌵搴㜱摥㈰ㄶ挸ㅦ散慦扢㌲ㄸㅢ㙦㈵挷㐰挲敥慡㔵㌱扡ㅥ㝥〱㕤戸攸㥣㌲㕡㔹㜹㔶挷昰㈷攱慣〱慤㑢晦㌳㝡㉤㥣㜵㤱扤ㄹ挶㙥搳晦ㅦ㐱挱㡥晡㕦㌱昶㈶㠸晣㘸㥣攱㠳捥昸挹㡥㈱ㅢ敥〸㍣摢〸摥挸挱搸㤰㉣㐳摥㔱㙥〵ㅦ慦㐶搵㈲挱攱昷捡㜷㕥㡤㘸昶愵㙤㍢搴㔳〰㌲㌶愴扦〶ㄱ搴戳㝦扢摣㑡㑥户㠵㡦愳攳挱戳㑥挵慦〷㜵㍢㥣㕣㐱搰㜷㤲摦㥥搹戰㜹㘶搵搷㍡㠵摡扤搸㠹攱㑦愲捦戹㈵〸散㜳㔶昸㜶挵㈲ㄹ㔹搸㕤㈴㠳摦㈱㡤愷挲㑢搴づ挱㑤昶㤳つ戳㠶㑦㔷㤷攰敢っ㔹戴㈷㤴㕤攴㜱敥扣愱挱慤挳ㅤ慤て挳ㅦ㘴搵愶ㄱㅣ㤳㈵㝣晣㤳摣搷捥㍤㘸㙦ㅢ慦㉤㘰换晥㝣㙥㈵晤㔵攰㜴㜷㙦㘹㈷ㄹ扥㤳㕦㈴㤷㡣㌲㈱㉥敤㥦挰摦摤㍢㘸㌹摡〴攸㍣晥愰㥢㡥戰愹ㅡ摣㘷扢㠸㝥㕦㐲㔷㌵㑢㠰㥦㘱挶ㄹ㑥㐶搱换㐷㔶㔴㕦挵戲挸〰挸攷ちㄵ㠰摥㔴晤昲㜶㔴㍤晥〴㝢㈲㈹㥥㌱㐸㡥㈵昵ㄵ㌴攴㜶㐵换〶㑢㜰搹㑡捥ㄲ挸ㅢ㐹て攴㜳㡡㘷〹㤹挸㥦愲㐳㜳㈲づ㑡㝢㑦攴㑦戶㥢㠸愲ㄵ㈰ぢ㑤㡦㍦㥥㘸ㄱ愳㠶㙡挳㈵昰〸敡〰攳㠹㌲ㄹ愳㝣愴搰㈹㐴㌱㠶㙦ㄲ㐵㐸㍦㠸晦扥㜹攲晢㙦㌰晤攷〹㈵ㄲㄱ㔵敤慢愰㐴㤴㔵㝣㌱扤ちㅦ愵扤㔷昱㠵敤㔶㌱㑥㘱挹㤹ㄸ㈱挰挸㠰㉡攳㡦慣慡㠱っ㌷㤴㍦㜵㠹〰扦戶㔹㡣ㄳ挳搲昷㉡㌲攸换㥤㤷㔶搷㤰㐹晡敡摣㠸㡣慦㝣挴㔰攲㡤㐸㍡㜵ち㤱㔷戶㄰愹挷愲ㅢ扢㘳昷㠴㤰挰㤲昸搹㙣㑦搹㕥攸㌳搴慦㍥㥢㈰收昴改攴ㄳ㉡㉤づ㍥㠱㌰㈲搳㤴㠴挴㡤㔴扦㤷㌴晥扢慦户㝣愷愸㐰〲昵㐴㡤㐹㜰搲昸㌳㐹攳愳昸㍣㑢摡攴㜸㤵㠰改捤愴㌱〹㔳ㅡ扦㤸㌴晥㡦愳㠷㥡㡤ㄳ㍡㡣㐶搶㐹㈴ㄹ㐶慦ㅣ〳㔲㥦㙡㡦愱戹㙥㔳㤱づ搹㔱㌱㐵愸挴㤰㙢愲㑡㠷㜱㉢挴挷挷搲㡢戸攴㠴扢㈰㤰戶搱晦㌳攱っ㉥㍦㉤㤸愱㠹㙦愱㌷ㄱ㜵昶つ㜹㘲攷㠲扤攴愳㘰搰㍥ㄳ攰㜰㔵摤㔳㈴〲扢㈰ㅦ敤敦づ摥昹っㅢ戲戵ㅦ㐹戴㑣攳㘵㤲晥戴㠸㐴㔸昲敡㔳〹㘶㜳㉦戴㘸挶㜸ㅥ挸㠱㤸〴㘴挶㜸〱㌰㡡挸ㅣ㘴挱㌸昹㕦㤸晢㔳慣昸㌴挱㡢〰㈵㐵㘶㈷ㅤㄴ㍥〳㌰㤶晣ㅦ㉢㈶㌷挵㜱愲愹㘷㤳㤷㝤㙣敥捥㈶ㄹㄹ㥦㘵㠷摦〷ㄸ㠰ㅦ㔷挹㈶攱㜶㠲昱〷㈸㐹扦㤴㠲㐳㕥晡㌹㔶㝣㥥攰ぢ〰㈵㥤㤳摤昵慥㜱㑤㝤慡戰㍦㐴㔷昵〲〱㝥挶ㄷ攳っㅦ㜴敥挳㙦昴㌶㥡㜹㈶㑥扥昰㐷捣戳敤㔳晥挷昱㘹晥ㄶㄷ㍤㠰晦㌳㠹㉥ㄶ㝥㕥晢㔰㝦㘳㤱〹㘸㥣换㙦〳㥢晤ㄶ挶攱扡㕡愱ㄴ㡥㐸愵㔲搴ち㡡昸收㠲㔵ㅤ㙦攰㕢㡥㑢㠵㔲愴〱愹昰攲㡡ㄳ㈸㌰晥㠸㑤㠹㘳攲挹昸㘳㍥ㄱ戵戲㠹㕦㐶㠶㙢攷㑦ㄱ慦搲晤改戸㝢昲㐲攲㕡㉡㥣㡥ㄷㄲ晦㔲戱㥥㝥攱㑢ㅣ㑣㤰㠵㑣扢㔶㈲搲㠴㠶扥㠲捣挸挰ㄸ攷昶ㄴ㝥摡㌵㔵戹㔴扤㜴改ㄷ㘳昹挹摢昳ㅦ昹敤攱㤷摥晣敥捦扦昴挳㑦ㅣ晦昷㕦扥晣昲て晦昵㑢㙦晣昲㕢㙢挷晦攵搵㔷晦昹㠹扦㜸攳攷〷散㔷戴慦晦㘲昱㤵攷㘶慥㍣昷㡣㝤攱㠱㔳捦㝤昴改㈷㘷㤶㙦㥡ㅡㄸㄸㅣ扣㝦攲㍢户㝤㘰晣㠵㘷扥愱晥改挷户㝡㑡㤶㡢ㄷㄸ㉦〳㜰挹晣㡤㜳搹㌲㡤㍦㐷挶昸㉡挰㠸㌶挶㘹扦愳㜳攱㥡㘵户捣㜸户收㔰㔰㔴戹㜱捥㑤愶昳ち㌲搰搵㥣㤵㌴㉣户㌷㔴㥣愹㔴晣㑥㕣挱㝢慢挶㕦〲攸慦〰㘴㕣㜵㙤㠹㉥慡㜲㐳づ扢ㄴ㘲摤〷摥㥢攲㑢〱㔳捤㌶〷㥡㈵捤㜳敥㘸戳㐸㡥慥㌷㝡搴挵㘲戹摥摣㍤扤搹㡣〷改㐴捡ㄶ搵慥ㅢ挶挷摤慦㜱㜴㈴㘵㌴㜳昲愸戸㔷挲〷㝦㠵㡣捥捡㕤っ㑤㥡改㔳㘶扤㠶慥㡡敦ㄲ㜶㑢慣㔱㡤〵㔲㠵㑣ㅢ㠷っ晤て㥦㉡㍣ㅡ | G30: 㜸〱敤㕣㔹㙣㈴㐷ㄹ㥥㙡㑦㡦愷挷昶摡㔹㙦㡥つ㌹ㅣ㐲づ攲挵㔹㙦戲㠴〴㤶挵㐷昶〸摥戵戳昶㙥㐰㠰㘶摢㌳搵敢捥㑥㜷㍢摤㍤摥㜵㠸㤴〸挲㈵㑥㠵㐳〴〲㐴ㄱち攲㠵攳〱〸挷ぢㄲㄲ〸〵挴〳㈰㈱昱㄰㄰㠲〷㄰㕡㠹ㄷㅥ㤰攰晢慡扢㘷㝡㘶㍣㙤㘷㤲㠰㠳㕣㥢昹㕤㕤㔷㔷搵㝦搶晦㔷㈷㈷㜲戹摣扦㤱昸㤷㈹捦捣㌵㡢敢㐱㈸㥤㠹ㄹ慦㔶㤳㤵搰昶摣㘰㘲捡昷捤昵㌹㍢〸晢搰愰㔰戶㔱ㅦ攸攵挰㝥㔸ㄶ换㙢搲て搰㐸捦攵㡡㐵㐳㐳㍤〷攱㙦㈴㜹㌰搸㙢㌰て戰㌴㌳㍤扦晣㈰㐶㕤っ㍤㕦敥ㅢ㍢ㄳ昵㍤㌴㌹㌹㌱㌹㜱挷㥤㤳㜷㑦散摦㌷㌶㔳慦㠵㜵㕦ㅥ㜲㘵㍤昴捤摡扥戱㠵晡㜲捤慥扣㕤慥㉦㜹攷愵㝢㐸㉥敦扦㘳搹扣昳㑤㤳㜷ㅥ㍣㘸摤㝤昷㥢〶昱敡摣挹㤹改〵㕦㕡挱换㌴愶捥㈹摦㌹㉢㉢㌶搷㈶愵㙦扢攷㈶㘶愶昱㕦㙡晥㜸扡㙢㘲㜱㐵捡㤰慦㤶扥㜴㉢㌲㌰搰㜱挰㤹ち㠲扡戳捡捤㌳㥣㈳㔸㙡挵っ㐲摤㤹㤱戵㥡攱㈴愳ㄶ㥤㜹散㕤捤㕣ㅦ㜴ㄶ愵ㅢ搸愱扤㘶㠷敢〵㘷〹〳㔵㠷㥣搳㠱㍣㘵扡攷攴㐹搳㤱扡㜳戴㙥㔷昳㔱捡昵摤㤲っ㤱㥥㤸㕡晥挴㔴攰捣慣㤸扥㥡㔱挰㡤挹㘸㝢挴慦戴戶扤戱晢戸㥣扡㝡〳挷扣愹㝢㍢搴㥣㌱晤㐶换昱敥㉤攳挵户捥攰昶敥敤㔳㝢搴摡攷昵摤晢愸慤㙣㙤㉤〶㘲晡㔶㍢㡡挵ㄸ〵㠲㝥㠲㈲〱ㄱ㘸㤴〸〶〸〶〱㐴晥ㅦ攰㤲㜴㐷㔶㘹㘵㔳㉢㉦㙢攵㡡㔶慥㙡㘵愹㤵㉤慤㝣㑥㉢慦㘸㘵㕢㉢㍦愸㤵捦愳㑤㤲㡡晤晤㕡㥣慥晤搴㙦㝦㜹昳㜷昴昹慦扤昰㡤ㅦㄶ敥戹㉡㍦戸ぢ㡤敥㡦㈷㌵敢㥢ㄷ㐰㙡㑤㉡㍥㌰戱㥦晦㌶攷ち㌰㠵㜵搰扡换㥡㥣慣ㅥ摣㙦摥㘱敡㕣㔶〶昲㕢〸㘵〴㙤〷慤〷㙣户敡㕤㔰戸扢㘶摡っ㘴㜳攳挶攳扡㘹慦敥㔶㠳搷㙣㕣戹ㄸ㥡愱扣扡扤慥㌹㐸㐷户㐵戰㤵っ搴晢慥㙢敦㜶挶慣搵攵搴㐵㍢慡扥戶慤摡㔹昰扤攵敥戵㐷㝣昹㔰愳戶㘳㐶㔳㄰㙡㙢㙡散㡥㔵㐶㔵搱扣挶㘶㔶扣㐰扡㙡㝡攳捥㠲㕤㌹㉦晤㐵㐹㤱㈸慢㙡愹㤷戳㉡收晡昱㜹ㄷぢ〵户㔶㕦㥢㉥戵敥扤ㄸ㠲㤹㘵ㄵ昳㕤㤵㝥戸扥㘴㉥搷攴ㄵ㉤㑤愲㜷愲㘲㙦㑢昱ㄱ慦㔲て㘶㍣㌷昴扤㕡㙢捤㔴㜵捤㠴愴愹㥥昰慡㌲㥦捦㈹愱〰㠱摢搷㈷㐴敥戶敥扣愰㄰㤱㐲㌱ㄹ昹慡㔶戲㥢㌸㠵搵㘱ㄵ㌵㐹㥡搴㕥户挹㘰㥣慦㤲㌱ㄹㅣ㤸㕡ㄳ昵〷㕦㝡敢㈶挳㌶㌰昷捡㌶搶戴搱㜸昵昷慥㐹㌷㍣㘶扡搵㥡昴㌳戵㥦攰㡣㡣㘱〰晤ㄲ〴㐲搷摤愳慡ㄳㄷ挵扡㝥挱慥㠶㉢㠵ㄵ㘹㥦㕢〹㔱〶つ㔹㉣㜲㙢㍢㤲㜱ㄹ㡡㡣摤〴愳〰愵㔲慥戰㠷㡤ち㈵愴㥣㑥改㤴挱换㉤㠲㥣晤㕡㜸㜹搰㍡㘲搷㐲ㄹ〹攵㘱ぢㄸ㠹戴㥡㐲摦㄰㐹搴㌷㉢㤱挲搸㘳捤㠰㑡㑤摢つ搷㥢㝣摢挱㈵ㄱㄱ敤挸㠲㙤㈷ぢ㈸ち㕡攵㐱〶慦㠱㘸摡愴㐱㜶攳ㄴㄱ㤱つ㌲㌴㍢㐶㙥㈵㌲戶捦㤰ㄱ㘸㥦㈶㐲戶摥摦㕤㐶㤰搸㍢㠹㤴㥤扡昲攳㡥㌴摢挸㤶㡦愴搹攵搸㌸攳ち㠲㉢〹慥㈲搸ぢ㈰晥っ〹㐷㈹㠷㝣㙢㌲㕥㠳㘷攳ㅡ㠲㙢〱㈰㥦っ捡㥣㔸㔴搱㠶摡㡡ㅤ挹㜶㐳戰㤳㤵㔱ㅣ㠹㈲㕡挶つ㍢㜳挸㔱㠸㡥慤捥敤愱㙢昳㑡挷摥摣㥤㌶搳换㈱㐵㘶㌴㑤慦㜵㤳愶改㡤㘰搳ㅥ昵搶昵攸㙡㡣ㄱ摣〰㔰㌲㕥㑢〸攵㐲㠳㜷㙢ㄶ㍤㑤捡㔷㠵㔹ㄴㄹ㐳㍤㉡昸㤸㤰㜹〴挸㄰㜲ㅤ挷㤷ㅤㅢ㥡收攰戸昵慡户愱昷㜵攷敦ㄸ改㙤㝡㜳㐷敦搰㕦昴㈲慤攸ㅢ挱㕥攲昷㕤㜵捣㑤愸㌶㙥㈶戸〵愰㑤挷昰昴晤㘲㍤〵捡㉣㜶㔲㤸摢㑤慦㡢戲㜲㤷搶㔷愵搲㐰㠳搶㤲改㥦㤳㈱㍣ㄸ挷㘷㘱ぢ㝢扥㉦㙢㌸搴㔶㔵〱捦㉦㔷戶ㄶ〶㐷㝣捦㘱昹㡥㡤ㅣ扣㉡ㄴ㐳㍥慦昵攵摡㙣攴っ㕢㌳攵㜳㑡㔱づ㜵昰ㅤ摤㠵㐴慡㔳㉢㜹戱㕦昶昹㜲㐷㤲昴㈰㐹㕥㡦㙤㌵㙥〳㠰㤴㄰扦改㉡㔱昶戱搹ㅢ㔴戳㔶㡢㤵ㅥ扥㡣搳㐹㥢て戱㐳㡥っ㐴づ摢㘹昸て㠲㈱㘷搱㜶ㅡ挲㘲挰㔹㤰㝥〵扥〵扢㈶㑢㤱㕢㤶愲㘶㐷㔶扣㑡㘴㐵㕦㕦挷㜹㍡挳扦愶攸愴㑤㑡㘴㜲㝢㘶㘵挶㔹扣㐹㔴㜴㐳㔲愸㘴戸㠶ㅡㄲ㠸㤴挷戶㍢㈲愶〷ㄱ㜳㍢㌶捥搸㑦㌰㐹㜰〰㐰晦〵㈴捤㔶㌷㥥攱戰晥㌵扡戴换攵㕣㤱㘸㔰㉥挲攷扢ち慢㠳㝣捤ㅢ〹敥〲㘸㌳㝦攸㠰捣㈰㐴㠵昲ㄴ㈱慡㌰㠶㜵挶㤶ㄷ㐸〳扢㉣〴㤶㘶敡㐱攸㌹㡣㉣つ㔹戳摥㐹㉦㥣戵㠳㔵㐴愲㐶慤㌸昳挰㡡㜴㐱㕤㍥㙣㥦戶㌲㙦㜵㔵㔶つ㙢搱慢㐳戴ㅤ㥦摤づ〷㜳㙣〷㙣㐹㜵㌶搷〴㔲㙦攷㘳っ㈱戰搳捡摦㑡㙦散㤶扣摦㍣昴つ㌷㜷㜴挹づ㙢㜲挰㡡㤸㡥昹愲㠵㕤㐴攴愰摡㙦㉤慤昸㔲捥づ㔹㐷㝤扢㕡戳㕤㐹㘴挰挶㘴戰㙥㑥㥥㐳㤴㘰挱㘳っ搰㜳㠷慣㈵摦㜴㠳㔵㤳〱挵昵摤㉤㑦㉡㉣愲㕢搳戶ㅢ攰㌵ち㡢捣て㕢㡢㉢摥〵㐴㙣敢㡥㝢搴㕣つ戶〵㔶㐸昴㔱㔲愸ㄱ㥡搰㌴㔱搴㡡扤攲㠷〷昲㕣㡥扣㤷㈷㔰戸捡改昴㤹㘷㘸㙦摡昵㜱㡣㠶㜶㍡攷㌴㠸攸㔱愳戰㉦㔳ち㤳㔳㡤扢搹攷ㅥ㠰晢㡥㥥㍥摥㡣捣扤愴㤸戵㑥㉦㝦㠶㡣㔷㘴搱〸㠴搰㐷户㉢㈲ㄵ㤶㤱㜲挰㠱挰㌸㥦摡挹慦㘴愹㌶愴扥㕤捤散ㄱ㐴㤲〶慤㌹㜳㔹搶㄰㡦㜶捣㜰㔷昴㐰㌳搶㌱㙢㐱㕣㌷攳㌹㡥㐹搲㈲㔹㉥㔶㑣㔲昰㔴㍤昴㑥搸慥㘱〱㈸晡㡢㡢捣㡢㈸㌲㉦慡愲㐱敢ㄴ㐳㠳㉡捦戱扣㜳愶㙦㠷㉢㡥㕤㈹昲㠱攱扢㙤㐱㤳㘰㜲㑡摥㈴㈵㌲㘳慣捤㥡㍦つ㤳㉤㤸〰扡㈷㈰㐷戹㜵㐴㍦㈸㔷ㄳ〵晣ㄳ㍤㍡㤶㈰㘰㤴愷搴㜸ぢ㐶搳搵敤〸㠸ㅣ㤵㉥㈵㜷㌰㉥㍤㡡㤲㐸〸ㄱ敢ㄹ㈴〲慦㘰㑡挸搳挵㕤戰㑥扢㜶〸散ㄱ㘳㐷散㜰㌶〰捡〱㤰㔵挷摢慢ㄵ㔶㔳㥤挶ㅢ㕡攱晡捥慡ㄶ㌵㜱㕤㘷㝤㕡㙦扣㙥㠳敡㐸愳愴ㄴ挹㘶㡤㤴㘶搹㘰㡥摢㐹搵〸愵戸ㄳ㙤㈳戲摣愶捤㝤愷ㄴ㜹〹㡡㐹搱㑣捥㜸慢㈲ㄴ〴㝡㘳ㅤ㐵㥦㝤㌶㜹愴㈲㌶戴〱㑡搴㔳㔱搹㔰ㅣㄲ㍣㡥㙢㈷㔵㔹㡡㥦挰摦扢攲散㝣㍤㙣愹㌱㉦㡥挶㌵㔳戵摡扣ぢ㉢愱㘲晡搵㙤挲搲㔸㕢愴㘱ㄴ㜷昶慡晤愳敤㑤㌱㘲捣㠶っ㡢㘴昸㠱挱㠶㘰慥㔴㐴㤵搶搹㄰户扡㔱㕣攴搳〹㘹扡ち〳㡢㘱㜵㔶慥㈹㌳慣㘹挹㡦慡づ㡤搳愲㤲愳㠶㌵戵ㅣ㐰愵㠷㤴攳㜱㑥㌱戸㘱㥤愲㕢ち㤷ㄸ㈰㜶攳摣㐲㈵㐴㘸户㌱〰㑦〶摢〷㍢搸㤱㈸㜴㐲敢㡣ㄲ戴㤰㐱戸慤㡢㈰敦昴㠸㔱〸㔲㑢愵扦ㅦㄶ㕦㜸㤲改敢㠷㜳㐹㈶㘶㈲㠶扢㌲慣〷㈰㌷ㅤ㤹㈴ㄷ㡤㈶〱昳㐸戲㈹愱㌵㤸㤴搱挴ㄸ愲挹攷㠷戸挵挳㔸搶㌰搹愶㠶㝢㙥愱つ㙤㕡㕢摦㘵ㅤ㜷㉢戵㝡㔵㉡㔵㥣挸㙡愵㤱户〵扥搴ㄵ挰㠸㥢㌲昶㈵摥㤴攳㌸㑡㜱挹㐴㔲敦㜶户㜱ㄸ摤㤵㤰挳ㄸ㤱敡㘳〰㌲挳㉤愷〲㘲ㅤ昷ㄴ㘸ㅦ敥㙥㕥㘰㔰㤷攷㈰搲㍡㡡㈸换收㜰ㅦ慦ㄱ㐵㔶摣㤶㙡㌶攷捤㜹戴搹㔳㐵挷散愸㘸㕢攰〸敢㡣〴㕥愱〰㘳愴㐷敥攰㈰戹㑢㜱㜴昷搲愳敡㌱㜷〹愸㔰ㄸ㄰㡣昱昲ㄴ㤴挳慥㠲㤱㘸㜰㙢㑤慢㕢㌰晡㑢换摢㤸〲㄰っ〳搳愰㐵换挸挰㤹㐱㝥㜳〳攷㝡戴捡㠸㤰愶㠳愹㡣㔱㡥挲㘱て愴㠱㥢㜸㤰㕥昲愰㠴挲㍤敡㘲㔸㜲㌷㜱摣挱ㄱ挸昳慦㘸㉢㕣㌰㐳㕣㝦㜱昷戶ㄵ㑦㔵慢㌴㜷攱㥦摢ㄶ㔸挵搵㡤挸ㅣ摤搳㜶㈹㑢慤㠹昶摤㡤㙤ㄵ昱㘵挱〳戳ㄳ挷捣戰戲戲ㄸ慥㐷ㄷ户㝡㈵〹晤㐷昰㐷㙣昸㜶摡捣㜹㤷ㄷ㔱搷戸昷愵昳慥㜷挱㔵昳搲〳摥晡〳㠵攰ち㘵㍦㈷㔹捡晤ㅢ晦㔴搲㜲晡て㌱攲㔶愶捤〱㥡づㄲ㡥愳㔲㈴つ挶㤰捦愰ㄳ搸敥㡤㕢〳愴㤳㍤㙤㜴愲〴挱づ愱戸攷㕥㌶㐲ㄱ㍦〰㕡㐹㉣搱㤱ㅣ㝢晥㉣㔸㕦㝣ㅦ㈵㐴㌸㥥㘳㌱愲摦㠰㕣〶敡㤴㈰㡦慦㜸昰㐲挸晦て㤶ㄲ㙥摥㤰㥤晥ぢ捣㉣㥥㙢㐷搱㜵㐴搱昷㍡㔰㈴㜸つ㐴昱敦㝤挸㈴㐹㘷㜸昶㐵〵挲戹愶㥤〳攸㉢㝥攱昷㝦㜸〰㥤㡢㠹㐳搹㘸〸戵摤㠴攷㠶㠹搰搷㘱㈲㌰㜸慦㑣㠴ㄳ挸〸㐶昱㈳ㄳ㈱昶㠱捣愳㘰㜳ㄳ㠱戱扤っ㐳㌰ㄵ㙡㑤戹㌵㜸〲扢挲愱㝦散ㄸ㉥摥捡〰昱㝣㈸慤㘰〶ㅥ愹㉢㍢㡢ㄷ㑣摦㜴昶慡昲愳扥㠴㌲昳㤷㜰㤳㕢㜵㘱㡦慢㌷慣㔱㥤㌶昰㔵㈴㕥昶ㅤ㝦捡搶敥慦〳㔳㔱㡡摣昷愲㈸ち㉦挱㔳㈲㜸㙥挸扤㜷捦㌷㡥晥攱攱挷て昳戶㕡㑣慢晡㙤挸昷ㄲ戲愷㍤㠱愰㙥敡愲挸攵晣㌰攷〴㍥㔱戲㔷㙢㜲摡昴㤵ㄵㄴㄸ㑥㤲㡤〸㉦㐵㤸ㄱ昱㙤〷ㄳㄳ昷ㅥ㈲ㄳ㜳愲捤摤愹㍥㙣㔲㉥挲㠹搴挴㤵㑦㉦〹ㅢ㡡慥㡡慣㐷㙢㔳晦ㄶ㔴搱㡢㥣㐸慢㤵挸㔳㈷㤳㄰摦㙣搷㜵〷愹敢愲㠳っ挳晥㠹㤴㐲晣㠱ㄴ㤲㍥挸昰㐲㠰㤲㔲愷㤰搱㙦〷挸㠸慣戵㠷㜸改て搸ㄱ〲戲㜱改慦挷㡦㔸戰㡢挰㘲攲㡢敦昵㐴㑢㕢㌴㔱㑤っ搵㉡㥢㘶ㄱㄹ㜵㜸㘱挱㘴㔲扡㠴㑣㤲昴〳挸㙤搹ㅤ挵㤷っ㌹㔱攰㉤㘲㙣摤愱慦慤攴摣敢搶㜱昳〳㝡愶愰ㄴ㠶扢㥢挵㌸㤰慡ㄸ㕤搴戴ㄴㄵㄱづ㐷搹㐶愷㠱戸ち㍡换摤㡢㔳㈹㠲㝦晣㔲㠸昵攳捤愱㉦㙦慦愱㡥㜳晢戱㐰晥㘰㝦㕤㤷挱搸㜸㉢㌹〶ㄲ㜶㑢慤㡡搱昵昰搳攸挲㐵攷㠴搱捣慡㘷㜱㄰㝦ㄲ捥敡搳㍡昴㍦愳搷㡡戳捥戰㌷挳搸㉤晡晦ㅤ㈸搸㔴晦ぢ挶摥ㄴ㈲摦ㄹ㘷昸愰㌳㝥戲㘹挸㠶㍢〲捦㌶㠲㌷敡㘰㙣愸㉣㐳摥㔱㙥ㄱㅦ慦㐶搵㑡㠲挳敦㤵㙦扦ㅡ搱攸㑢摢㜶愰慢〰㘴㙣㐸㝦ㄶ㈲愸㙢晦㔶戹㤵㥣㙥ぢ敦㐲挷㍤㈷散㡡敦〵㥥ㄵ㡥㉤㈲攸㍢挶㙦捦㉣搸㍣㔳攲慢敤㐲敤㐶散挴攰㝢搰攷攴㍣〴昶㐹ㄹ扥㕣戱㐸㐶ㄶ戶ㄶ挹攰㜷㐸㈳愹昰ㄲ戵㐳㜰㤹㜵㝦摤慣攱搳搵㜹昸㍡㐳ㄶ㙤ぢ㘵ㄷ㜹㥣摢㙦㘸㜰敢㜰㐷敢敤昰〷挹摡〴㠲㘳㙡〹敦㝡て昷戵㝤て㕡摢挶㙢ぢ搸戲㌷㥦㕢㐹㝦〶㌸摤摡㕢㕡㐹㠶敦攴ㄷ挹㈵愳㑣㠸㑢晢㠷昱㜷敢づ㕡㡥㌶ち㍡㡦㍦攸愶㈳㙣扣〶昷搹ㄶ愲摦㘷搱㔵㑣ㄱ攰㘷㤸㜱㠶て㠲㕥㍥戲愲昸㌲㤶㐵〶㐰㍥㔷愸〰㜴愷敡愷㌶愲敡㤱晢搸ㄳ㐹昰㡣㐱㜲㉣㠹㉦愲㈱户㉢㕡㌶㔸㠲换ㄶ敡㉣㠱扣㤱昴㐰㍥㈷㜸㤶㔰ㄳ昹㍣㍡㌴㈶㘲愳戴晢㐴㍥户搱㐴〴慤〰戵搰昴昸㈳㠹ㄶ㌱㙡愸㌶ㅣ〲㤷挰〳ㄸ㐹㤴挹㌰攵㈳㠵㑥㈱㡡㌱㝣㥦㈸㐲晡㔵晣昷㠵挳扦㜸㥥改㙦㠷㠵㤲㠸愸㙡㕤〵㈵愲㕡挵㈷搳慢昰㔱摡㝤ㄵㅦ摦㘸ㄵ㈳ㄴ㤶㥣㠹ㄱ〲っ昵㠹㌲晥愸㔵搵㤱攱㠶昲㈷捥ㄲ攰搷㌲㡢ㄱㄳ㈵慡敦〵㘴搰㤷㍢慦㕡㕤㐴㈶改慢㜳㈳㌲扥昲㔱㠶ㄲ㙦㐴搲愹㔳㠸扣戲㠵㐸㍤ㄶ㥤搸ㅤ扢㉤㠴〴㤶挴捦㘶扢捡昶㐲㡦愱㝥昱愱〴㌱挷㡥㈵㥦㔰㘹㜱昰〹㠴ㄱ㤹愶㈴㈴㙥愴昸㘰搲昸摢摦㙤晡㑥㔱㠱〴敡㠹ㅡ㤳攰㔴攳て㈴㡤て攰昳㉣搵㈶挷慢〴㑣㉦㈴㡤㐹㤸慡昱攳㐹攳扦ㅥ搸摢㘸㥣搰㘱㌴戲㑥㈲挹㌰㝡搵㌱㈰昵愹昶㌰㥡敢ㄶㄵ改㠰ㄵㄵ㔳㠴慡ㄸ㜲㑤愹搲㐱摣ち昱昱戱昴ㅣ㉥㌹攱㉥〸愴㙤昴晦㑣㌸㡥换㑦戳㘶㘸攲㕢攸㌵㐴㥤㝤㐳㍤戱㜳挱㥡昷㔱搰㙦ㅤて㜰戸慡㙥㉢ㄲ㠱㕤㤰㡦昶㜷ㄳ敦㝣㠶つ搹摣㡦㈴㕡愶昱㌲㐹㙦㕡㐴㐵㔸昲攲㝤〹㘶㜳㡦㌵㘹挶㜸ㄴ挸㠱㤸〴㘴挶㜸っ㌰㡡挸散㘱挱〸昹㕦㌱昷晢㔸昱㝥㠲挷〱㑡㠲捣㑥㍡㈸㝣〰㘰㌸昹㍦㔶㡣慤㈹挷㠹㈶ㅥ㑥㕥㤶㈶㈳攳㐳散昰㘱㠰㍥昸㜱㐵㑣㠴㈵攳㈳㈸㐹扦㤴㠲㐳扤昴愳慣昸ㄸ挱挷〱㑡㍡㈷扢攵㕤攳㥡㝡㔴㘱㥦㐰㔷昱ㄸ〱㝥挶㈷攳っㅦ㜴敥挳㥢扢ㅢ捤㍣ㄳ㈷㕦昸㈳收搹昲㈹晦扤昸㌴㝦㥤㡢敥挳晦㤹㐴㔷ㄶ㝥㕥扢愷户戱挸〴㌴捥搵㙦ㄵ㥢晤ㄲ挶攱扡㥡愱ㄴ㡥㐸愵㔲搴ち㠲昸收㠲㠵㠷㌷昰㉤㠷㔴㠵㄰愴〱㔵攱挶ㄵ㠷㔱㘰㝣㥡㑤㠹㘳攲挹昸っ㥦㠸㕡戵㠹㥦㡤㌳㝣㄰挴慢敡晥㘰摣㍤㜹㈱㜱慤㉡散戶ㄷㄲ晦慡㘲㈵晤挲㈷㌹㤸㐲ㄶ㌲慤㕡㠹㐸㔳㌴昴㐵㘴㠶晡㠶㌹户〷昰搳㉥㡡捡搹敡搹戳晦ㅣ捥㡦㕤㥤㝦挷摢〶㥦㝣攱攷㝦㝣攲搷敦㍥昴㤷㝦㍤昵搴慦晦昴挴昳晦晡搱昲愱㥦㍥昳捣㑦敥晢捡昳㝦摣㙤㍤慤㝤昷㥦㜳㑦㍦㌲㜹晥㤱㠷慣搳户ㅤ㝤攴㥤て摥㍦戹㜰搹㜸㕦㕦㝦晦㉤愳㍦扢敡搶㤱挷ㅥ㝡㑥晣昸㜷㔷扡㐲㉤ㄷ㉦㘸㥤〶㤷慤愶昱㈵㘴㌰つ捥昸ㄵ㥤〶㤷慢㌶㙡㌹摥愸㘹ㄴㄴ攱摣攰〴㔴㠵搹㕡㌱昰ㅦ搸昴戲㠱 | H30: 㜸〱敤㕣㕢㙣㈴㐷戹㥥敡㤹ㅥ㑦㡦敤戵戳摥㘴戳㈱㈴㠶㄰〲昱攲慣㌷㔹㤲〰换攲㑢昶ㄲ扣㙢㘷敤摤㠰㌸㌰摢㥥愹㕥㜷㜶扡摢改敥昱慥㐳愴㐴㤰㄰㄰〴挴㔵〴挲㐵ㄱ㐲昰挲攵㠵晢ぢㄲㄲ㐷㐷㐱攲〱愴㜳㈴ㅥ〲㍡㠲㠷㠳㡥㔶攲㠵〷㈴昸扥敡敥㤹㥥ㄹ㑦摢㤹㈴攰㈰搷㘶㝥㔷搷慤慢敡扦搶晦㔷㈷㈷㜲戹摣摦㤱昸㤷愹挰捣㡤㑢ㅢ㐱㈸㥤挹㔹慦㕥㤷搵搰昶摣㘰㜲摡昷捤㡤㜹㍢〸昳㘸㔰慣搸愸て昴㑡㘰㍦㈲㑢㤵㜵改〷㘸愴攷㜲愵㤲愱愱㥥㠳昰㌷㥡㍣ㄸ散㌵㔴〰㔸㥥㥤㔹㔸㜹〸愳㉥㠵㥥㉦て㡥㥦㡦晡ㅥ㥤㥡㥡㥣㥡扣昳慥愹㝢㈷てㅤㅣ㥦㙤搴挳㠶㉦㡦扡戲ㄱ晡㘶晤攰昸㘲㘳愵㙥㔷摦㉤㌷㤶扤㑢搲㍤㉡㔷づ摤戹㘲摥㜵捦搴㕤㐷㡥㔸昷摥㝢捦㄰㕥㥤㍢㌳㍢戳攸㑢㉢㜸㤹挶搴㌹攵扢收㘴搵收摡愴昴㙤昷攲攴散っ晥㑢捤ㅦ㑦㜷㑦㉥慤㑡ㄹ昲搵搲㤷㙥㔵〶〶㍡づ㍡搳㐱搰㜰搶戸㜹㠶㜳ㅣ㑢慤㥡㐱愸㍢戳戲㕥㌷㥣㘴搴㤲戳㠰扤慢㥢ㅢ㐳捥㤲㜴〳㍢戴搷敤㜰愳攸㉣㘳愰摡戰㜳㉥㤰㘷㑤昷愲㍣㘳㍡㔲㜷㑥㌴散㕡㈱㑡戹晣㙤挹㄰改㠹愹攵㑦㑥〷捥散慡改慢ㄹ〵摣㤸㡣戶挷晤㙡㝢摢㕢㝡㡦换愹慢㌷㜰捣㕢㝢户㐳捤㜹搳㙦戶㥣攸摤㌲㕥㝣晢っ敥攸摤㍥戵㐷敤㝤摥摣扢㡦摡捡昶搶㘲㌰愶㙦戵愳㔸㡣㔱㈴ㄸ㈰㈸ㄱ㄰㠱㐶㤹㘰㤰㘰〸㐰ㄴ晥〲㉥㐹㜷㘴㤵㔶㌱戵捡㡡㔶愹㙡㤵㥡㔶㤱㕡挵搲㉡ㄷ戵捡慡㔶戱戵捡㐳㕡攵ㄲ摡㈴愹㌴㌰愰挵改㥥㑦㍦㘵收㍦晤搱㠵愷晦晢㈷㝦晥挰户昶㝦㝣㘸てㅡ㍤㄰㑦㙡捥㌷㉦㠳搴㕡㔴㝣㜸昲㄰晦㙤捤ㄵ㘰ち敢㠸㜵户㌵㌵㔵㍢㜲挸扣搳搴戹慣っ攴户ㄱ捡㈸摡づ㔹て摡㙥捤扢慣㜰㜷攳㡣ㄹ挸搶挶㑤挴㜵㌳㕥挳慤〵慦搹扣㜲㈹㌴㐳㜹㐳㘷㕤㙢㤰慥㙥㑢㘰㉢ㄹ愸昷摤搴搹敤扣㔹㙦挸改㉢㜶㔴晤摡㡥㙡㘷搱昷㔶㝡搷ㅥ昷攵挳捤摡慥ㄹ㑤㐳愸慤慢戱扢㔶ㄹ㔵㐵昳ㅡ㥦㕤昵〲改慡改㑤㌸㡢㜶昵㤲昴㤷㈴㐵愲慣愹愵㕥换慡㤸敢㈷ㄶ㕣㉣ㄴ摣㕡㝢㝤扡搴扡敦㑡〸㘶㤶㌵捣㜷㑤晡攱挶戲戹㔲㤷搷戵㌵㠹摥㠹㡡〳㙤挵挷扤㙡㈳㤸昵摣搰昷敡敤㌵搳戵㜵ㄳ㤲愶㜶摡慢挹㐲㈱愷㠴〲〴㙥㍥㉦㐴敥昶摥扣愰㄰㤱㐲㌱ㄹ昹晡㜶戲㥢㍣㡢搵㘱ㄵ㜵㐹㥡搴摥戰挵㘰㥣慦㤲㌱ㄹㅣ㤸㕡ㄳ昵〷㕦晡愶㉤㠶㙤㘲敥㤵㙤慣㘹㘳昱敡敦㕢㤷㙥㜸搲㜴㙢㜵改㘷㙡㍦挱ㄹㄹ㈳〰晡㔵〸㠴㥥扢㐷㔵㈷慥㠸つ晤戲㕤ぢ㔷㡢慢搲扥戸ㅡ愲っㅡ戲㔴攲搶㜶㈵攳ㅡㄴㄹ㝢〹挶〰捡攵㕣㜱ㅦㅢㄵ换㐸㌹㥤搲㈹㠳㤷摢〴㌹晢戵昱昲㤰㜵摣慥㠷㌲ㄲ捡㈳ㄶ㌰ㄲ㘹㌵㠵扥㘱㤲愸㙦㔶㈳㠵戱捦㥡〵㤵㥡戶ㅢ㙥戴昸戶㡢㑢㈲㈲摡㤵〵㍢㑥ㄶ㔰ㄴ戴换㠳っ㕥〳搱㜴㐸㠳散挶㈹㈲㈲ㅢ㘴㘸㜶㡣摣㑥㘴㙣㥦㈱㈳搰㍥㑤㠴㙣㝤愸户㡣㈰戱㜷ㄳ㈹㍢昵攴挷㕤㘹戶㤹㉤ㅦ㐹戳㙢戱㜱挶㜵〴晢〹慥㈷㌸〰㈰晥〸〹㐷㈹㠷㝣㝢㌲㕥㠳㘷攳㐶㠲搷〲㐰㍥ㄹ㤴㌹戱愸愲つ戵ㅤ㍢㤲敤㠶㘱㈷㉢愳㌸ㄲ㐵戴㡣㥢㜶收戰愳㄰ㅤ㕢㥤㍢㐳搷ㄶ㤴㡥㝤㘳㙦摡㑣㉦㠷ㄴ㤹搱㌴扤搶㉤㥡愶㌷㠲㑤晢搴㕢㌷愳慢㌱㑥昰㍡㠰戲昱㝡㐲㈸ㄷㅡ扣摢戳攸㘹㔲扥㉡捣愲挸ㄸ敡㔳挱挷㠴捣㈳㐰㠶㤰敢㍡扥散摡搰㌴〷㈷慣㔷扤つ㝤戰㌷㝦挷㐸敦搰㥢扢㝡㠷晥愲ㄷ㘹㐵摦〲昶ㄲ扦敢愹㘳㙥㐵戵昱㐶㠲摢〰㍡㜴っ㑦摦㉦搶㔳愰捣㘲㈷㠵戹扤昴扡㈸㉢㜷㜹㘳㑤㉡つ㌴㘴㉤㥢晥㐵ㄹ挲㠳㜱㙡づ戶戰攷晢戲㡥㐳㙤㑤ㄵ昰晣戲扦扤㌰㌸敥㝢づ换㜷㙤攴攰㔵愱ㄸち〵㉤㥦敢戰㤱㌳㙣捤㤴捦㈹㐵㌹搴挱㜷昶ㄶㄲ愹㑥敤攴挵㝥搹攷换㕤㐹搲㠷㈴㜹㌳戶搵戸ㅤ〰㔲㐲晣戶愷㐴㌹挸㘶㙦㔱捤摡㉤㔶㝡昸㌲㑥㈷ㅤ㍥挴㉥㌹㌲ㄸ㌹㙣㘷攰㍦〸㠶㥤㈵摢㘹ち㡢㐱㘷㔱晡㔵昸ㄶ散扡㉣㐷㙥㔹㡡㥡㕤㔹昱㉡㤱ㄵ昹㝣搷㜹㍡挳扦愶攸愴㐳㑡㘴㜲㝢㘶㘵挶㔹扣㐵㔴㜴㐳㔲愸㘴戸㠶㥡ㄲ㠸㤴挷戶扢㈲愶てㄱ㜳〷㌶捥㌸㐴㌰㐵㜰ㄸ㐰晦ㄵ㈴捤㜶㌷㥥攱戰㠱㜵扡戴㉢㤵㕣㠹㘸㔰㉥挲攷㝢ち慢㈳㝣捤㕢〹敥〶攸㌰㝦攸㠰捣㈰㐴㠵昲ㄴ㈱慡㌰㠶㜵摥㤶㤷㐹〳㝢㉣〴㤶㘶ㅢ㐱攸㌹㡣㉣つ㕢㜳摥ㄹ㉦㥣戳㠳㌵㐴愲挶慣㌸昳攰慡㜴㐱㕤㍥㙣㥦㡥㌲㙦㙤㑤搶っ㙢挹㙢㐰戴㥤㥡摢〹〷㜳㙣〷㙣㐹㜵㌶搷〴㔲㝦攷㘳っ㈱戰搳捡摦㑡㙦散戶扣摦㍣昴㡤戴㜶㜴搹づ敢㜲搰㡡㤸㡥昹㤲㠵㕤㐴攴愰㌶㘰㉤慦晡㔲捥つ㕢㈷㝣扢㔶户㕤㐹㘴挰挶㘴戰㙥㕥㕥㐴㤴㘰搱㘳っ搰㜳㠷慤㘵摦㜴㠳㌵㤳〱挵㡤扤㙤㑦㉡㉣愲㕢㌳戶ㅢ攰㌵ち㡢捣㡦㔸㑢慢摥㘵㐴㙣ㅢ㡥㝢挲㕣ぢ㜶〴㔶㐸昴㔱㔲愸ㄱ㥡搰㌴㔱搲㑡晤攲㠷〷昲㕣㡥扣㔷㈰㔰戸捡改昴㤹㘷㘸㙦摡昵㜱㡣㠶㜶㍡攷㌴㠴攸㔱戳㌰㥦㈹㠵挹愹挶扤散昳㌶㠰晢㑦㥣㍢搵㡡捣扤愴㤸戵㑥㉦㝦㠶㡣㔷㘴搱っ㠴搰㐷户㈷㈲ㄵ㤶㤱㜲挰㠱挰㌸㥦㍡挹慦㙣愹㌶愴扥㍤慤散㜱㐴㤲㠶慣㜹㜳㐵搶ㄱ㡦㜶捣㜰㑦昴㐰㌳搶㌱敢㐱㕣㌷敢㌹㡥㐹搲㈲㔹㉥㔵㑤㔲昰㜴㈳昴㑥摢慥㘱〱㈸晡㡢㡢捣㉢㈸㌲慦愸愲㈱敢㉣㐳㠳㉡捦戱扣㡢愶㙦㠷慢㡥㕤㉤昱㠱攱扢ㅤ㐱㤳㘰㜲㑡摥㈴㈵㌲㘳扣挳㥡㍦〷㤳㉤㤸〴扡㈷㈱㐷戹㜵㐴㍦㈸㔷ㄳ㐵晣ㄳ㝤㍡㤶㈰㘰㤴愷搴㜸〷㐶搳搵敤〸㠸ㅣ㤵慥㈶㜷㌰慥㍥㠶㤲㐸〸ㄱ敢ㄹ㈴〲慦㘰㑡挸搳挵㕤戴捥戹㜶〸散ㄱ㘳挷敤㜰㉥〰捡〱㤰㔵挷摢ㅢㄴ㔶㔳㥤㈶㥡㕡攱收敥慡㌶㌵㜱㔳㜷㝤㕡㙦扣㘱㤳敡㐸愳愴ㄴ挹㔶㡤㤴㘶搹㘴㡥㍢㐹搵〸愵戸ㄳ㙤㈳戲摣愶慤㝤愷ㄴ㜹〹㡡㐹搱㑣捥㜸愷㈲ㄴ〴㝡㘳ㅤ㐵㥦㝤㌶㜹愴㈲㌶戴〱捡搴㔳㔱搹㜰ㅣㄲ㍣㠵㙢㈷㌵㔹㡥㥦挰摦㝢攲散㐲㈳㙣慢㌱慦㡣挵㌵搳昵晡㠲ぢ㉢愱㙡晡戵ㅤ挲搲㔸㕢愴㘱ㄴ㜷昶慢晤愳敤㑤㌱㘲捣㠶っ㡢㘴昸㠱挱㠶㘰慥㔴㐴㤵搶搹㌰户扡㔹㕣攲搳㘹㘹扡ち〳㑢㘱㙤㑥慥㉢㌳慣㘵挹㡦愹づ捤搳愲㤲愳㠶㌵扤ㄲ㐰愵㠷㤴攳㜱㑥㌱戸㘱㥤愵㕢ち㤷ㄸ㈰㜶攳摣㘲㌵㐴㘸户㌹〰㑦〶㍢〷㍢搸㤱㈸㜴㐲敢㡣ㄲ戴㤸㐱戸敤㡢㈰敦昴㠹㔱〸㔲㑢愵晦㍦㈶扥昴っ搳户㡦攵㤲㑣捣㐴っ㜷㘵㔸て㐰㙥㍡㌲㐹㉥ㅡ㑢〲收㤱㘴㔳㐲㙢㈸㈹愳㠹㌱㑣㤳捦て㜱㡢㠷戱慣ㄱ戲㑤ㅤ昷摣㐲ㅢ摡戴扥戱挷㍡攵㔶敢㡤㥡㔴慡㌸㤱搵㑡㈳敦〸㝣愹㉢㠰ㄱ㌷㘵散㑢扣㈹愷㜰㤴攲㤲㠹愴晥敤㙥攳ㄸ扡㉢㈱㠷㌱㈲搵挷〰㘴㠶㕢㑥〵挴扡敥㈹搰㍥摣摢扡挰愰㉥捦㐱愴㜵ㄵ㔱㤶捤攳㍥㕥㌳㡡慣戸㉤搵㙣摥㥢昷㘸戳愷㡡㑥摡㔱搱㡥挰ㄱ搶ㄹ〹扣㘲ㄱ挶㐸㥦摣挱㐱㜲㔷攳攸敥搵挷搴㘳敥㉡㔰愱㌰㈰ㄸ攳攵㈹㈸㠷㕤〵㈳搱攰搶㕡㔶户㘰昴㤷㤶户㌱つ㈰ㄸ〶愶㐱㡢㤶㤱㠱㌳㡢晣搶〶捥捤㘸㤵ㄱ㈱㑤〷㔳ㄹ愳ㅣ㠳挳ㅥ㐸〳㌷昱㈰扤散㐱〹㠵晢搴挵戰攴㙥攲㠴㠳㈳㤰攷㕦搷㔱戸㘸㠶戸晥攲ㅥ攸㈸㥥慥搵㘸敥挲㍦户㈳戰㡡慢ㅢ㤱㌹扡慦攳㔲㤶㕡ㄳ敤扢㕢㍡㉡攲换㠲㠷攷㈶㑦㥡㘱㜵㜵㈹摣㠸㉥㙥昵㑢ㄲ晡捦攰㡦搸昴敤戴㤹ぢ㉥㉦愲慥㜳敦换㤷㕣敦戲慢收愵〷扣昵〷ち挱ㄵ捡〱㑥戲㥣晢㍢晥愹愴攵昴㥦㘲挴敤㑣㥢〳戴ㅣ㈴ㅣ㐷愵㐸ㅡ㡣㈳㥦㐱㈷戰摤㥢户〶㐸㈷晢㍡攸㐴〹㠲㕤㐲㜱㉦扥㙣㠴㈲㝥〲戴㤲㔸愲㈳㌹昶晣㥢㘰㝤昱㘳㤴㄰攱㜸㡥挵㠸晥㍡攴㌲㔰愷〴㜹㝣挵㠳ㄷ㐲晥㝤戰㤴㜰昳愶散昴㑦㘰㘶昱愳㑥ㄴ摤㐴ㄴ晤戰ぢ㐵㠲搷㐰ㄴ晦摥㡦㑣㤲㜴㠶㘷㕦㔴㈰㥣㙢摡㍤㠰扥攲ㄷ㝥晦㠵〷搰昹㤸㌸㤴㡤㠶㔰摢慤㜸㙥㥡〸昹㉥ㄳ㠱挱㝢㘵㈲㥣㐶㐶㌰㡡ㅦ㤹〸戱て㘴〱〵㕢㥢〸㡣敤㘵ㄸ㠲愹㔰㙢捡慤挱ㄳ搸㜵づ晤㘳㈷㜱昱㔶〶㠸攷㐳㘹〵戳昰㐸敤敦㉥㕥㌴㝤搳㌹愰捡㑦昸ㄲ捡捣㕦挶㑤㙥搵㠵㍤㙥搸戴㐶㜵摡挴㔷㤱㜸搹㜷晤㈹摢扢扦づ㑣㐵㈹㜲摦㡢㤲㈸扥〴㑦㠹攰戹㈱昷挱㝤摦㌹昱晢㐷㥥㌸挶摢㙡㌱慤敡户㈳摦㑦挸㥥昶〴㠲扡愹㡢㈲搷昲挳㥣搳昸㐴挹㕥慢换ㄹ搳㔷㔶㔰㘰㌸㐹㌶㈲扣ㄴ㘱㐶挴户ㄳ㑣㑣摣㝢㠸㑣捣挹づ㜷愷晡戰㐹戹〸㈷㔳ㄳ㔷㍥扤㈴㙣㈸㝡㉡戲㍥慤㑤晤㝢㔰㐵㉦㜲㈲敤㔶㈲㑦㥤㑣㐲㝣户㔳搷ㅤ愱慥㡢づ㌲っ晢㈷㔲ち昱〷㔲㐸晡㈰挳ぢ〱㑡㑡㥤㐵㐶扦〳㈰㈳戲搶ㄹ攲愵㍦㘰㔷〸挸收愵扦㍥㍦㘲挱㉥〲㡢㠹㉦扥摦ㄳ㉤㙤搱㐴㌵㌱㔴慢㙣㥡㈵㘴搴攱㠵〵㔳㐹改㌲㌲㐹搲て㈳户㙤㜷ㄴ㕦㌲散㐴㠱户㠸戱㜵㠷扥戶戲㜳㥦摢挰捤て攸㤹愲㔲ㄸ敥㕥ㄶ攳㐰慡㘲㜴㔱搳㜲㔴㐴㌸ㄲ㘵㥢㥤〶攳㉡攸㉣昷〰㑥愵〸晥昱㑢㈱搶㑦戴㠶扥戶戳㠶㍡捥ㅤ挰〲昹㠳晤㜵㔳〶㘳攳慤攴ㄸ㐸搸㙤戵㉡㐵搷挳捦愱ぢㄷ㥤ㄳ㐶㉢慢㥥挵ㄱ晣㐹㌸㉢慦㜵改㝦㐶慦ㄵ㘷㥤㘷㙦㠶戱摢昴晦㝢㔰戰愵晥ㄷ㡣扤㈹㐴扥㌷捥昰㐱㘷晣㘴换㤰つ㜷〴㥥㙤〴㙦搴挱搸㔰㔹㠶扣愳摣ㄲ㍥㕥㡤慡㤵〴㠷摦慢搰㜹㌵愲搹㤷戶敤㘰㑦〱挸搸㤰晥㑤㠸愰㥥晤摢攵㔶㜲扡㉤扥てㅤ昷㥤戶慢扥ㄷ㜸㔶㌸扥㠴愰敦㌸扦㍤戳㘰昳㑣㡢㙦㜴ち戵㕢戰ㄳ㐳敦㐷㥦㌳ぢ㄰搸㘷㘴昸㜲挵㈲ㄹ㔹搸㕥㈴㠳摦㈱㡤愶挲㑢搴づ挱㌵搶〳つ戳㡥㑦㔷ㄷ攰敢っ㔹戴㈳㤴㕤攴㜱敥扣愱挱慤挳ㅤ慤㜷挳ㅦ㈴敢㤳〸㡥愹㈵扣敦晤摣搷捥㍤㘸㙦ㅢ慦㉤㘰换晥㝣㙥㘵晤㌹攰㜴㝢㙦㘹㈷ㄹ扥㤳㕦㈴㤷㡤ち㈱㉥敤ㅦ挳摦敤㍢㘸㌹摡ㄸ攸㍣晥愰㥢㡥戰㠹㍡摣㘷摢㠸㝥㕦㐰㔷㌱㑤㠰㥦㘱挶ㄹ㍥〸㝡昹挸㡡攲慢㔸ㄶㄹ〰昹㕣戱ち搰㥢慡㥦摤㡣慡㐷敦㘷㑦㈴挱㌳〶挹戱㉣扥㡣㠶摣慥㘸搹㘰〹㉥㕢愸戳〴昲㐶搲〳昹㥣攰㔹㐲㑤攴㡢攸搰㥣㠸㡤搲摥ㄳ昹挲㘶ㄳㄱ戴〲搴㐲搳攳㡦㈶㕡挴愸愳摡㜰〸㕣〲て㘰㌴㔱㈶㈳㤴㡦ㄴ㍡挵㈸挶昰㘳愲〸改搷昱摦ㄷ㡥晤敡㜹愶㍦ㅦㄳ㑡㈲愲慡㝤ㄵ㤴㠸㙡ㄵ㥦㑡慦挲㐷㘹敦㔵㍣扤搹㉡㐶㈹㉣㌹ㄳ㈳〴ㄸ捥㡢ち晥愸㔵㌵㤰攱㠶昲㈷㉥㄰攰搷㌶㡢㔱ㄳ㈵慡敦㘵㘴搰㤷㍢慦㕡㕤㐱㈶改慢㜳㈳㌲扥昲㔱㠶ㄲ㙦㐴搲愹㔳㡣扣戲挵㐸㍤㤶㥣搸ㅤ扢㈳㠴〴㤶挴捦㘶㝢捡昶㘲㥦愱㝥昱㔴㠲㤸㤳㈷㤳㑦愸戴㌸昸〴挲㠸㑣㔳ㄲㄲ㌷㔲㝣㈴㘹晣晤ㅦ戴㝣愷愸㐰〲昵㐴㡤㐹㜰慡昱㤳㐹攳挳昸㍣㑢戵挹昱㉡〱搳ぢ㐹㘳ㄲ愶㙡晣㐴搲昸晦づㅦ㘸㌶㑥攸㌰ㅡ㔹㈷㤱㘴ㄸ扤敡ㄸ㤰晡㔴㝢〴捤㜵㡢㡡㜴搰㡡㡡㈹㐲㔵っ戹慥㔴改㄰㙥㠵昸昸㔸㝡ㅥ㤷㥣㜰ㄷ〴搲㌶晡㝦㈶㥣挲攵愷㌹㌳㌴昱㉤昴㍡愲捥扥愱㥥搸戹㘸㉤昸㈸ㄸ戰㑥〵㌸㕣搵㜶ㄴ㠹挰㉥㈸㐴晢扢㠵㜷㍥挳㠶㙣敤㐷ㄲ㉤搳㜸㤹愴㍦㉤愲㈲㉣〵昱愱〴戳戹挷㕢㌴㘳㍣〶攴㐰㑣〲㌲㘳㍣づㄸ㐵㘴昶戱㘰㤴晣慦㤸晢㐳慣昸㌰挱ㄳ〰㘵㐱㘶㈷ㅤㄴ㥦〴ㄸ㐹晥㡦ㄵ攳敢捡㜱愲㠹㐷㤲㤷愵挹挸㜸㡡ㅤ㍥ち㤰㠷ㅦ㔷挴㐴㔸㌶㍥㠶㤲昴㑢㈹㌸搴㑢㍦捥㡡㑦㄰㍣つ㔰搶㌹搹㙤敦ㅡ搷搴愷ち晢㈴扡㡡挷〹昰㌳㍥ㄵ㘷昸愰㜳ㅦ摥摥摢㘸收㤹㌸昹挲ㅦ㌱捦戶㑦昹敦挳愷昹ㅢ㕣㜴ㅥ晦㘷ㄲ㕤㔹昸〵敤㙤晤㡤㐵㈶愰㜱慥㝥㙢搸散㤷㌰づ搷搵ち愵㜰㐴㉡㤵㤲㔶ㄴ挴㌷ㄷ㉣㍣扣㠱㙦㌹慡㉡㠴㈰つ愸ち㌷慥㌸㠶〲攳戳㙣㑡ㅣㄳ㑦挶攷昸㐴搴慡㑤晣㝣㥣攱㠳㈰㕥㔵昷㠷攲敥挹ぢ㠹㙢㔵㘱㜷扣㤰昸㔷ㄵ慢改ㄷ㍥挳挱ㄴ戲㤰㘹搷㑡㐴㥡愲愱㉦㈳㌳㥣ㅦ攱摣ㅥ挴㑦扢㈲慡ㄷ㙡ㄷ㉥晣㜵愴㌰㝥㐳攱㍤敦ㅡ㝡收㠵晦晡挳㘷㝥昳ㅦ㐷晦昴户㘷㥦晤捤晦㝥收昹扦晤㙣攵攸㉦㥦㝢敥ㄷ昷㝦敤昹㍦散戵扥慥晤攰慦昳㕦㝦㜴敡搲愳て㕢攷㙥㍦昱攸㝢ㅦ㝡㘰㙡昱㥡㠹㝣㝥㘰攰戶戱晦扣晥㑤愳㡦㍦晣㈳昱昳晦搹敦ち戵㕣扣愰㝤ㅡ㕣戶㥡挶㔷㤰挱㌴㌸攳㔷㜴ㅡ㕣慥摡愸㤵㜸愳㘶㔰㔰㠲㜳㠳ㄳ㔰ㄵ㘶㝢挵攰㍦〰昶㈲戳㠴
A31: Decisioneering:7.0.0.0 | B31: Decisioneering:7.0.0.0 | C31: Decisioneering:7.0.0.0 | D31: Decisioneering:7.0.0.0 | E31: Decisioneering:7.0.0.0 | F31: Decisioneering:7.0.0.0 | G31: Decisioneering:7.0.0.0 | H31: Decisioneering:7.0.0.0
C32: CB_Block_7.0.0.0:1 | D32: CB_Block_7.0.0.0:1 | E32: CB_Block_7.0.0.0:1 | F32: CB_Block_7.0.0.0:1
C33: 㜸〱敤㝤㜹㝣ㄴ㐵晡㝥㉡挷㤰ㅥ慥〱㐱ㄱㄵ〳ㄲ㉦㌰㘶㈶㌷㡡㈴㠴㕢㈰㐸㌸搶㌳っ挹っ㐴㈶㌳㌸㤹㠴㐳ㄴ敦ㄳ搴昵㐶扣ㄵㄵ㉦ㄴ挵㕢㔶〴搶㜵扤㐵搶㙢㕤昱摥㕤慦昵摡㕤㜵搵摦昳扣摤㤵昴昴昴㈴㤲㜵㍦㍦晦昸㜶㘶摥㔴搵晢搶晢搶晢㜴㔵㜵㑦搵㍢㍤ㄹ㉡㈳㈳攳㈷ㅣ晣捦㈳㥢㠹㍤㙢㤷㌴㈷㐲㑤〵搵戱㐸㈴㔴㥦㘸㡣㐵㥢ぢ慡攲昱攰㤲挹㡤捤㠹㉣〸㜸敡ㅡ挱㙦捥愹㙢㙥㕣ㅡ捡慤㙢つ挵㥢㈱㤴㤳㤱㤱㥢㙢㘴㠲扦扢昵昶改㡣挱㕡㐶㌶〹愴㌲って㐹㌷㤲㕣ㄲ㠳挴㑢搲㥤愴〷㐹㑦㤲㕥㈴扤㐹㝣㈴㝤㐸晡㤲散㐲搲㡦愴㍦挹慥㈴扢㤱っ㈰愱㝤㘳㈰挹ㅥ㈰㍤昶〴㤹㔱㍤扡㘶敥昱昰愶㌶ㄱ㡢㠷㠶攷捤㌲摢㍣搲敦㉦昰ㄷㄴㄵ晢㉢ちち㠷攷㔵户㐴ㄲ㉤昱搰挸㘸愸㈵ㄱて㐶㠶攷㑤㙢㤹ㅢ㘹慣㍦㍣戴㘴㐶㙣㐱㈸㍡㌲㌴户戰㘸㙥戰戸摣㕦㕣㔲ㄲ慥愸㈸敦戱ㄷ㌴㑦慤ㅥ㍤㉤ㅥち㌷晦㔲㍡〷㔱㘷㑤昵攸㠲愹愱挴㉦愵㜳㙦攸㠴捡㌱戱愶㘰㘳昴ㄷ㔲㥡挳㜳㕡㌲㈶㔴摦挸㤳ㅦち挵ㅢ愳昳ち搰散㈴愰㤱㉢㉢愸㙡㙥㙥㘹㕡挸㝥㔴ㅤ㡡㐴愶㠷挲㜲搲㥢挶㌴㈷愶〵攳㑤捤㍤㥡㠸㕦㈸ㅥ㡡搶㠷㥡㝢㌵㡤㕤㕣ㅦ㡡㔸㠲捤戹㑤戳㠲昱愹挱愶㔰㌶ㄳ扤㥢捣㜳㌸戱㈱ㄴ㑤㌴㈶㤶昴㙣㥡搹ㅣ㥡ㅥ㡣捥ぢ㔱㈴愷㘹㝣㑢㘳㠳捡捥挶㉢㈳㙢㍦户㤶挹㠹㐲㝢㥡慡攷〷攳〹挹昱ㄴ晡摤㘴㙤摤㐵扣㐸㙡ㄷ扢㔴㥥愳ㄶ捦㔹㙤㘳搳攱愱㜸㌴ㄴ愱ㄱ㥥挹㘱づ㈱〱挸㍣て㙤㐸㘹㜷㜸㤶㔴㜷㙢昰搱ㄷ㕡昱攴㠱ㄴ捣㠸㌷挲捤㤶㐸㌰㍥㝣㑡㘳㜴愴扦扣戰戰㜰昸攴挶〵愱㐸㘳愸㌹㌱㌲㠰㙣攱昰㈹挱挵㈳〳㑣ㅡ㠳㔱挷ㄸ挲摡晢㠰散戶昹慡㠶昸搶㡤㜳㠳㜹㑢㠳㕢㔷㙤扥㙢㘹㈸扡昹慥扣㤹戵挶㔰㡡攵㠳愸散㌷㌰〹搸㑤㜳㈰㘶搶〵㌳敢收㘶搶搵㘷搶㌵㘴搶㠵㌲敢挲㤹㜵昳㌲敢收㘷搶㌵㘶搶ㅤ㥦㔹户〰㌲晡挸敤搶㉤搳㍡晥㜹㝥敥愴㈳扦㑤搴㍣㜶搶㡢摦晦㜳捥㔳扦㔷ㅣ昷㌲㙤散㠷挴ㄸ㠷㉢〱㝦㐱㐵㐵㐹㐵愰愴挸敥㑦㜱㐱㜱㔱㐵㠵扦捣昴愹戴愰扣扣愸愲戰扣㡣㙥攲㈸㌲昶㠷㈶攳〰㄰捦㠱㈰㌹戳て愷㍢挳㔸㌸ㅣ㐴愹㙤㜰㠷㉥㙤慥㕣攱昹昶换㉢愶摥㜲㙡㜳摦扦慦㡤㙣㔲㥣㝥愴㉤〵㐸〴ㅣ㙤㈹㉣㈸っ㤴ㄴ摢摡㘱ㄵ㄰㔸㈶换㉡㡡㡤㠳㘹愴㄰挴攳〷ㄹ㌴㈶戸昵㥣扣愵㜹搱㔰㔳慣戵㌱ㄱ㙢㑥㌴收敤㍦户愵㈱搶扡攴〰㌶㈹㐰改㈲㄰愵㥥戵㥡㜴挲㉢ぢ㌷㥦㜵敥慢攳ㅦ㥤晢搳敡戵㑢㥦㌸㕢㜱㌲㤴㈶㤵㈰㌱捥搱㈴㝦㔱㜱㠵慤㐱晥愲㤲挲〲㝦㐵㜱㐹㘹㔱㘱㔱㘹㐹㔱㔱㠹㈰攴㉦㉥㉦㈹〸昸㡢ぢ晤ㄵ㐵㈰攵㘵㐶㈹つ㤷㠱㜸捡㐱晡㑤㡢㙦扥愱㤵㘷㍤ㅥ㘲㉦慡て戱㜱ㄵ㤴ㄹ〱愲搴㔶慢㜱挱㥢㡡摦摣昴捡㍤攳㉦散㍦敢昱愷晦㌶㜱ㅦ挵㐹㕡ㅡ㜷㈸ㄲ㘳㥤㡤㉢㈹㉢㉣㈹㈸慣㈸㉣㉤㉤づ搸㕢㔹㔶捣㘶ㄶㄶ㤶ㄵ㤵㥢敤慢昰㔷㤴ㄴ昸晤㠵攵㝥㝦戹㌱㤲㜶て〳昱㡣〲改㌱㙢昳攳捤㠹㘰㉢扡㈷摡㔴㐹㕥ㄵ㠸㔲ㅢ慤㌶㡤㔹戲㘴换挷㘷㔷㔶慦晢捦㍤㌹㙦㝤㜱昱晤㡡搳㠷戴愹ㅡ㠹㙡㘷㥢㡡换ち晤㈵攵昶搶㤸㈵〵㘵愵㘵〱扦搵㥥㔲㝦㤹扦慣戸愰ㄴ扤慣愸愲摣ㄸ㐳慢㘳㐱㍣攳㐰㜶㤹戲ㄴ㈷㜰昳摡扣攸收ㅢㄶ㐴㠲つ㑢搸戰昱ㄴ㤹〰愲搴㠳㔶挳ち挲㐷散晦㔹昱ㄵ㤳㙥扡㝣摥捣㔷づ㌹愶㐵昱㍡㈶つ㥢㠴挴㌴㘷挳捡〳㠱戲㠲搲㐰㘹㘹㘱㘱㐵㐵㤱ㅤ慦〰扡㕤愰愰挲㕦㕥㡣ぢ㑢戱搹挴〰愴换㜱㑥ぢ〳ㄵ㠵㈰㘵ㄵ㘵挶攱㙣挲㘴㄰捦ㄴ㤰晥搵ㄸ昹㌱㌹愹昶㜶㑥愵㔰つ㠸㔲昷㔸敤㍣㙣て搵㜷昱戵搷㑣㝥昴愵戳扦㥦戰捦扤摢ㄴ㉦戵搲捥㈳㤰㐸改㜱㌸愱ㄵ㘵ㄵ㘸㘸㠹㌹摡散㉤昵ㄷ〴〲㝥㡣搷㜲慢摦攱搲㠹㙢㘷㐹㜱㔱㠹㌱㥤㠶㙢㐱㍣㌳㐰㝡㡥㡤㠴ㄶ㈴戶慥㙡㡣捡㘹㥤㐹收㉣㄰愵搶㕡慤摡昰攴搸昳㐶㝥戴㜰昴㌹攷つ㍤晣愶愱〷扦愰扡㠳㉤慤晡つㄲ㐵づ昴㌰晣㑡换㘱戵㝤捥㐳㐹㔹愹搹っ㈴换㡢晤㈵挶㤱戴㜲ㄴ㠸攷㘸㤰摤㙢ㅡ㕡㘳㌸㜹㑢㠳㑤㕢㔶㌷㈷愲挱搶㘰㈲ㄴ㤱㥥㝦っ〵㡦〵㔱敡㐶慢㌹㥦㙣㜸昸摤挳㑢慢㈶摣晡㜶昵扡て换敥㝤㐷昱㉥㐴㥡㔳㠷㐴ち㐸㐹搳㠴扦〴愳挰ㅦ㈸挶㠸っ㤴昱愸㌰㝢㝤㔹㘱㐱㠹扦愸戴ㅣ㈳戲戰〴㐷戹㌱〷扡㡣㈰㠸㘷㉥㐸㥦㘹昱ㄸ捥摤昱愱愶扣昹挱㠸㜴戳㝡ち㌴㠰㈸戵摡㙡搹㤰攸扤㔳昷昱㝦㌸昱捣㠹摤慥敡昱搶捡㤹㡡户㐶搲戲㌰ㄲ捥㌱㔹㕣㔸㘲扦㌲㌰㕢㔰㔲㡥㐶㔴昸ぢ㉢搰昵㑣挴搸搱搰晢〳㠵㈵攵㠵㈰愵挶㍣摡㥤て攲㘹〴搹戳慡愵愱㌱㤱ㄷ捣摢晣挸㤶㤵愱〴㈷㡥收㐸ぢ㉥㈱搲挶攳㈹扢〰㐴愹㑢慤㌶慥摦昸挶慡攱㥥ㄹㄳ搶て㉥扡慦挶昸㘲㌷挵㍢㌷㘹㘳ㄳㄲㄳㅣ㈷㌳㠰㠹㍣㘹扡㘷扥〰㉤っ㤴㘲捡挰㙣㘲捤晢ㄵ㘵㠵挵〵㠱昲挲愲㜲㘰㔸㔴㔶㔴㙣㐴㘹㍡〶攲㔹〸戲㑢摢戴㘶㙢摤〹ㄴ㠹㠳㈸戵搲㙡摤昶㥡㙦ㄳ慦扤戶㝤昴晡慢㉡ㅥ㍡愵㑦摥㐷㡡户㤴搲扡〴ㄲ捥㡢㙢ㄱ扢扤慤愳㤹㜹㕥〳㡡㤸㌴㕡㘸愰ㄵ挴戳〸㘴㥦愹㜲〲愳㤸㉥㤶〶㜱ㅡ攳つ㡢㠲昱㄰愰㙢㡥㠵ㄳ㤲挴攴戱㤸㔵㤶㠰㈸㜵㤶搵愶㕢晡㌶㔶㉤㡦㕤㍦晡戶愵㥦㕦晣昶挸㌵挳ㄵ敦㜰愵㑤㈷㈲㌱搳㠱㔸㜱愰愰扣戰扣戰慣捣ㅦ挰㜴㕢㔶ㄱ戰㕦愵㡡换ち㑡㑡㡢㑢㡡ち㜱戱㈸㉡づ攰ㅡ㈱摤て㔳㑡ㄱ愴换㡢晣挵攸㤲愵㐵挵愵挶㌲戶攳㈴㄰捦挹㈰戹搵㈱㡣捥愳愲㌵挶㜲㤶㥦〲愲搴㜲慢㝤㡦昷搸攷㠶敡慢〷㔷㥦㝤捦㔷㌳慦㝡攸换昷㜳㜸昳㕤攴㜶㌷攳扣㔱ㅡ㠷ㅢ散晡㘰㜳挲扡㠷攳ㄵ攴㤷扤挵敢晣づ㙦㕣扣晥㝦㝦㠷〷㈳扦挸ㅤ㥥㜱ㅡ㄰㌲㑥〷昱㥣〱攲摤戲愲㜶㐲摥戴㠹扣攸㥣㐹捥㔹㈰㑡㉤戱捥换敦㈲㙦㕥㜷敥〸㘳捡㈹户攵㕦昹昹搵㙦㠴ㄵ㍦て㐹扦㌹〷㠹慥摣搱㥣㑢㈳攷㠱㜸捥〷搹摢敤㡥㘶㘱㙣㘹愸㘹㐱㡢摣搲慣愰昸㑡㄰愵攲㔶㥢㈶慤㥢㔸㜲㐲戵㥡昰挰愶ㄳ㉦㝣㜷晤㤷搳ㄴ㍦㥥㐹㥢㉥㐴挲㌹㜷㜲昴摢㠶ㄷ戳〵㐵敤㠳扦㝤散ㄷㄴ摢挶㝥㠵㜱ㄱつ晦ㄶ挴㜳㌱挸㥥㌳㌰㤷㉦㠸㌵戵㐴ㅢㄷ〴户慣㜴㑣㔱㤷㔰昶㔲㄰愵ㄶ㔸㡤㝣攴敦㤱ㅦ㕡攷摥㍣敥攱挸㠸㍤㑢㔶㡤㍢㐸昱攳愳㌴昲㜲㈴愶㍢〶ㅣ㈶愲㤲㠲昲戲ㄲ摣㘲攱收挶㍥摡㑡换㌰愳㔶㤴〵捡晤㈵晥㜲㕣捤㑢㑢㘵戴㤵ㄵ〷㑡㜱㐵挲戵扤㤴愴〸㤳搵ㄵ㙣挴㤵㈰㥥㔵㈰晤㈷〷攷挶攲㐱㝣晣㘴㕢ㄳ戸㜸换㘴㝡ㄵ㠵㔶㠳㈸搵㘰戵昴攴挴てて扦晤摥㝤㌵㔷つ㕣昹攲㔳㉦ㄷ昶㔰晣㡣㉢㉤扤〶㠹昱㡥㤶攲愶捡づ㈷戳〵戸㈰攱敡㕤ㅣ愸〸〴㑡慤㙢㤱扦扣扣〰㌷㍤〱㝦㐹㌱㙥㠳㡡㉢㑡㡣㙢㘹昹㍡㄰捦昵㈰摤㈷㐶ㄳ晣攴㤲㘰扦扢㠱慣ㅢ㐱㤴㍡搶㙡㔴㝥攸愳敢㥥慤㑣㡣㝦昴昰㉢扦㝢敡慣㔷戳搴慥㘰㑢愳㙥㐶攲㘸㐷愳㜰㐵挶㑤ㄸ㉥㉥愵攵愵㐵㐵戸ㅤっㄴ搹㈷㝣戲换㑡昱㔱〵愴愴愲捣㕦㕡ㄱ㌰㑦㍢ㄹㄵ㐵攵㠱挲昲㈲㕣敤㜱挵㉦つ昸㡤㌵㙣捤㉤㈰㥥㕢㐱㝡ㅤㄵ㙡㈲㠲ぢ㈳㑢愲㙣敢㙤攴慥〵㔱㙡㤶搵搶愵㑦慥㙦㥤搰扦㜴挲㕤挵㤹㘷搷㐶㕥晡㕡㜱㘹㐰摡㝡〷ㄲ晦愳戹昵㑥戶攳㉥㄰捦摤㑣㤹㜳㙢扣㈶㘰慣㘳昶ㅥ㄰愵㙡慣〶㝥㕢㜸挴㜱昵㠹㘵愳㝦㝢换㐸摦改㕦散戸㕥つ〰㕢ㅡ戸ㅥ㠹晦㐵㕦扣㡦㡤戸ㅦ挴戳〱㘴昷㈹挱昸㠲㔰〲㥦搸昳㠲㜹つ㔸搵㠹㌷捥㙤㌱㍦ㄴ㍣㐰挱〷㐱㤴㥡㘰戵戶昴㤳㍤㕥ㄹ㌲㜵散㠴晢㜶愹昹挷㠶㤹㍦搴愸摤挱㤶搶㍥㡣㠴ㄳ捥㐰㐵㐱㜹㘹㈹㙥晥㡢㜰㕡晤㠱ㄲ扦晤晥戱愸愸〰㜷戹戸ㄵ挲㐵っ搷昴ㄲ慢㜷ㄶ㤵ㄶ㤴ㄴ攲晡㠵㝥㠹㝢㘰㥣昴ち攳ㄱ戶攳㔱㄰捦㘳㈰㍤〴捥挹㡤攳㐲搳㙡㡡㡤挷挹摢〸愲㔴㤵搵挶ㄳ敦㔹㌴敢攸㡣敦㈶㥣㔵㝥摥挸㔷慢㙥扣㕣つ〴㕢摡昸〴ㄲ㈹㘳〶㝤捦㌶〵昹㤱㉤㐰て㉤㉥挳㜵戴愸扣戸㌰㘰摤扦㤵〷ち〲攸㠵〱㕣㐷㜱昷㕥ㅣ㌰㌶㐱㤹昱㈴㠸㘷㌳㠸㤷㜳㔰㌸㈶摤㜰ぢ㌹㕢㐱㤴ㅡ㘱戵改攵㙦㈶晣㘶㐵敥㤷㠷㙦㕣敥扤㙡攲愱换捦㔵㝢㠰㉤㙤㝡ち〹㘷㥢㌸慦搸摡昴昳愷㤹㍦搰昲搳㈰㥥㍦㠲散㕤㠳て㔳㜲挷ㄶ挶扤㜷搴㥣ㄹ敤ㅦ㄰㥥愱昸戳㈰㑡ㄵ㔹つ㍤挲晢㐹㤱㙦挱㜱㔳㉦晢晤㠳挷慣㍡攵愰㤱㍤㥥〷晢〸㙢㈱㘲㑣㍣戸〸ㅤ愵㝤搵㈸㔰㠰㔱晡㜳㤶换戰㕡ㄶ㉥〹㤷㠵晤晥㠶㤲挲㘰㔱㌰㘷㌰搴晥摣㜵ㄹ摥づ昵〸捦㙥㡣㌶挴ㄶ挹㐲捤㥥愳㠳捤愱昶慢晡㌰㡢㌷㍡搶ㄲ㙤㘸摥挳㥤㔹ぢ㈸㐲〳㥤扣㜶㈵㈹搵㙡戱㡣ㄵ㙡ㄶ㝢㠳㥣搵㘶〵㈳㉤愱慡挵㡤㈶㝢㉦〷ㅢ㡢㔸戱戹改戹攳攲愱ㄳ摡戸㈹㉤慡挲㉡㙢慢攸㑥昱搲㘴㤹敤捡慢㥥ㅦ㙢づ㐵愵㜹挳㥡愶㌵搶㉦〸挵㙢搱〵敢ㄳ愱〶㜱戵㍦㔹搶㑡摡戰㥡㈸ㅣ挵摡㔸挳㄰㝢㘹㜸散攲㐴㈸摡㄰㙡㐰㝢ㄷ㠶攲㠹㈵㌳㠲㜳㈳愱㕤㤳㐴㑣㥢㘰散㥥㔴㍣㉥㔶摦搲㕣ㅤ㡢㈶攲戱㐸㌲愷慡愱㌵㠸搵扢㠶㈹戱㠶㄰ㄶ摦戲㜹㘴愸㡣慣㉣愵㌲づ㜴扢㘷愴摥收〲㌹ㄱ戶㔳扣ㄷ捥昹㠰攴㙥㔷㌰ㅤ摥挱㡢㐸㠸㝤㌲㜳㘸㈷捡㐴㉦搵ㅣ㤰㕥搰收ㄳㄷ戴㈹扤㝦㝡㘹㘹㘳摢㤹晢摦ち㘷㘶敥㘲㜹㍦戶ㄵ㉢㥣ㄳ㠲搱㠶㐸㈸摥攱㜲扣㘲㡢㡣ㄷ㐰㜲ち㌱㥡搳愲㤷つ〹戵㔸㉤挹㔹搴搸㤰㤸敦㤹ㅦ㙡㥣㌷㥦ㅦ㝥戰㘴㥦㥢㑢㘸㔳づ攳㈵ㄴㄹ㉦㤳㙣〳昱㝡㌳㍣慦㔰挸攳㌵戶㥢昹㥣㈱昸扦昳㙢愷㤹愸㘵挸㕡㉤ㄶ搶㥢㜳㥡昰㜹愱㌹㉢换捤换〹挱收昹〹㜶捦㡥㤹搴昷㈷㤲㔷㐱㜲㠶㠲㜴扡㌴换て㠰搹㕣㠱敥搹㌴㈶ㄴづ㘲摤㕦㐶户ち收㌴㤹㑢挹㘳㐲捤昵〶搷㥣㈷㘲慣㉣昶㈰㠵挱摦愳㠹扤㍦戴㌸㌱㈶㤸〸㜶㙢挲敡㌵捥㤲〱愱㘱㔲换㑣戱㘶㑦㈹搳戵扤㔶づㅡ㝣㤲戴㘹改㉥〵愶㈶っㅣ㡣㤷㡣㉣㡢㜶散〴摡捥㑦ㅦㅥ㘷㐷㑦㕥㠵挶攲㜸挳昸㔰㜴挶㤲㠵愱㘶㡡攷㝡㍡㠴搲㌹扣愸慣愶㝥敥捣㐴㘳愴戹〰㉤ㅤㅦ㡦戵㉣晣㈵昵㔰㤷昱ㅡ㠸㍥㜲昶㐳㉦晥昹㍥〱慥㡣㙥慤㍣㌷㜵㜵ㄹ戹搴挶ㄲ㘳ㅦㄲ昶㔶㈸晢〹晦攴㌰晥㡣㝦摥㡥㜸㌹昹㤰搸㤹ㄵ晢ㅣ挸昷㘸〲㐲㌳攲㈱搹㠳挸㤵っ搰敥搹㌴㍢ㄶ㕦㌰㌷ㄶ㕢挰晥搴㑢㜲捤昳㐳愱〴搷昵扢㕢晢ㄸ戲㕦愱㔴㔶㔶搲捡扢㙤〳㘰㙦攸昷散〰改㔹ㄵ㠹攴㘹㡤捤㥥㜷㔰㤴㠵ㅤ〶捦扢㐸散㍥㜶㐱㉣ㅡ㙢挲挷愰扡搶戲㍡散㐰搴㑤慥慥㉥㔸ㅣ㘹㙥㔲㝢挱㝤㉥㠳㠷愷扤晣㘸搵愲愶愹㉢扦摡㜲搸扦扦㜹慣㔴敤㘹㌱㔲搶敡昷㠷挲挱㜸ㅢㅦ㠰愸㠱㄰攳戴㠲㜴昲㘱㝣㠴扣昱㔷㤲扦㠱㘰㜲㄰戸㌱㌷㝣㙣㘶搵〱昸捦昹挱昸㠴攴㔳㄰㌵っ㠴愳搳昸っ㐴ㅦ慡て昴昳愴换㠹㍢㄰挵愹㈷敥㑢㤴㝡㡤づ㜸㙡㌸㈴㜸昲㡣ㅤ㈴㠴挷㈰㌴慡ㅢㄴ扢〲攰戱ㄸ㈹ㅢ〴〷愳㥡〰昰㍤敢㘷㐳捣ㅤ㠰ㅦ㘸攳㐷ㄲ愲㘳〳㠰㐳ㄸ㔹㔵㠸㘲〱㈰ㄳ〵㐶ㄶ㠸ち愰㐸〰㤰㙤㔶㘴㜸愸敦㝦戴〱攰㐷㐹㉡〰戹搴㘹㜴挰㔳㐵愸攷〶挰ㄷ㔰敥ち挰㍦㉣㐶捡㜶㐴㈹㌴つ㘶㉢晡戰挹㥦㐱捣ㅤ㠰㕤挰㌶晡㤱昴〷戱〱戰㥢㤹㔵㘵㔰㈲〰っ愰搰敥㈰慡〲㐵〲挰㐰攴昴愱㍥戰〳㔰㡥攲㔴〰〶㔱愷搱〱㑦㡤㐰㍤㌷〰摥㑣〷挰ㅢㄶ㈳㘵换㘳㈴㌴つ㘶㉢昶㘳㤳㕦㑢ぢ挰〱㘰ㅢ〷㤲っ〳戱〱㜰㤰㤹㔵㠷㐱㠹〰㔰㐰愱㠳㐱㔴㈵㡡〴㠰㐲攴昴愱㕥戰〳㌰ち挵愹〰ㄴ㔳愷搱〱㑦㔵愱㥥ㅢ〰㕢搳〱戰挵㘲愴散慦㡣㠱愶挱㙣挵㐸ㄸ㔵㑦愶〵㘰ㄴ搸㐶㈵㐹ㄵ㠸つ㠰㙡㌳慢挶㐲㠹〰㌰㠶㐲㘳㐱搴㜸ㄴ〹〰攳㤰搳㠷㝡搸づ〰户㘰㔲〱㤸㐴㥤㐶〷㍣㌵〱昵摣〰㔸㤷づ㠰扢㉤㐶捡㍥捥攱搰㌴㤸慤愸㘵㤳敦㑣ぢ挰㑣戰㡤㔹㈴戳㐱㙣〰ㅣ㘹㘶搵㘴㈸ㄱ〰㡥愲搰搱㈰㙡㉡㡡〴㠰㘳㤰搳㠷扡挹づ挰ㄴㄴ愷〲㌰㠷㍡㡤づ㜸慡〶昵摣〰㔸㤵づ㠰㉢㉤㐶捡〶搱㜴㘸ㅡ捣㔶㌴戲挹㤷愷〵㘰〱搸㐶㠴愴〹挴〶㐰捣捣慡㕡㈸ㄱ〰ㄶ㔲攸〴㄰㌵ㄳ㐵〲㐰ㅣ㌹㝤愸㤵㜶〰㘶愰㌸ㄵ㠰㔶敡㌴㍡攰愹㔹愸攷〶挰改改〰㌸捤㘲愴散㐵ㅤ〹㑤㠳搹㡡攵㙣昲㈹㘹〱㌸ㄵ㙣攳㌴㤲搳㐱㙣〰㥣㘹㘶搵㔱㔰㈲〰㥣㐵愱戳㐱ㄴ㌷㥦〴㠰㜳㤰搳㠷㕡㘴〷攰㘸ㄴ愷〲戰㠲㍡㡤づ㜸敡㔸搴㜳〳愰㈹ㅤ〰ㄱ㡢㤱戲晢㌵〷㥡〶戳ㄵ㤷戱挹挷愷〵攰ち戰㡤㉢㐹㔶㠱搸〰㔸㙤㘶㔵㄰㑡〴㠰慢㈹㜴つ㠸慡㐷㤱〰㜰㉤㜲晡㔰㐱㍢〰㜳㔱㥣ち挰㡤㤰昷ㅡㅤ昰㔴〳敡戹〱㌰㍢ㅤ〰戳㉣㐶捡㈶摢㍣㘸ㅡ捣㔶摣挱㈶捦㐸ぢ挰㕤㘰ㅢ㜷㤳慣〳戱〱㜰慦㤹㔵昳愱㐴〰㔸㑦愱晢㐰搴昱㈸ㄲ〰敥㐷㑥ㅦ敡㜰㍢〰㡤㈸㑥〵攰㈱敡㌴㍡攰愹〵愸攷〶㐰㔵㍡〰㉡㉤㐶捡づ㕥ㄴ㥡〶戳ㄵ㥢搸攴挳搲〲戰ㄹ㙣㘳ぢ挹㔶㄰ㅢ〰㑦㤹㔹ㄵ㠳ㄲ〱攰てㄴ㝡ㅡ㐴㥤㠰㈲〱攰㡦挸改㐳㤵搸〱㔸㠸攲㔴〰㥥愷㑥愳〳㥥㡡愳㥥ㅢ〰挳搲〱㜰愰挵㐸搹㈴㙣㠱愶挱㙣挵慢㙣昲晥㘹〱㜸ㅤ㙣攳つ㤲㌷㐱㙣〰扣㘵㘶㔵㉢㤴〸〰㝦愱搰摢㈰㙡㌱㡡〴㠰ㅤ挸改㐳敤㙤〷㘰ㄱ㡡㔳〱㜸㥦㍡㡤づ㜸㙡〹敡戹〱搰㍦ㅤ〰晤㉣㐶捡㡥㈴㜷ぢ〷戳ㄵ㥦戲挹㝤搳〲昰㌹搸挶㍦㐸扥〰戱〱昰㤵㤹㔵㈷㐱㠹〰昰㌵㠵扥〱㔱换㔱㈴〰晣ㄳ㌹㝤㈸挳づ挰挹㈸㑥〵攰㍢敡㌴㍡攰愹㔳㔰捦つ㠰㥦㝥㐸㜳㉢晣愳挵㐸搹昲㍣つ㥡㍡㔸慦㑣摡㘵散〷搹愴昵捡ㅥ攱㜱㡤ㄱ㙣愹挸㤲㔴敦㌰晥㤹㤱㜲㤲敦挹㘵戸㜸戰摥㡣㐱敢ㄷ慥挶㑡ㅣ㐲昳ㄲ㑢㘴戹㐹㐴㔲㔶〲捤㠵戲晦㕢敦晣搵慤㜷捡㙡㘷搲㥡㘷〷敢㠹攸㌴㡥ㄵ捦㡥㠵㙤㥤㘸㉦㜴㌱搷搵〹改㉦〵搰㥣摣挹㈸敦㕣㑡㤱昸挳㌶㜹㝢㈷愴㜴㘱晡㜵㔰㜶昶搴㑥捡㑡㘹搷ㅣ㥦〷昳晦㔶㙣㥤〱搴收㡡㙤㔶㈶㈶户㙣㤲ㅣㄲて㐹㌷㄰昵㙦㑣㐶晣挰㕤〵昰ㅥ㐶挱㕡捣㜷挷㜱㡥㌴ㄸ㕡㙤㜸㐹扡㠳搸愶搹㥥挸㝡㝡㠱㜴挳㔲㕦〸㠱换㕥愵㑥㐷㡤㈱慣搵ㅢ攵〶〳戱㝢昴〱㤹㍡㈱ㄴ挱慡晦㉦ㄵ慣㥣㜳㈶㑣㜴扣㑥㠹㝥搳ㄷ㐲扢㌶搵㉥㠹搶捦㐷扣ㄳ㐲挶戹㝣㕡㔵㡦㘸摦㘶ㄵ昴㌴㑤㡥㔵户㈴㍣㑤ㄳㅡ昱慦㐷搳昴搰挲㔰㌰㔱㡤㕤ㅤ慣捤㑥㐶ㄸ㠹慣扣㑥㙣㔸晣晦㜳㘵㌶㈳ㅢ㉥㘴㈸㥣〶扤㌸慢㥣愳搶㕣㈳戵攰㉤ㄸㄳ㐳攴㜸㐸㠲收〹扢挷㠳㔵昶㕦攱搲㉢愲改搱扡敢扥戸晤㤰晣㙢搶晤㘴晤㕦㡥摥㈷㠷㜱〶㥣㑥扤〲昷㐷ㄵ㙦㐷㍣挵㠸㤵戶㉢戰㘷㈰攴戳搰つ捣ㄵ戹昷搳㕤㠵摦戳ㄸ㈹〱㉥攷㐲摢㘰戶㘴㄰ㄴ愹㜷慣昱㠱㠲攴挳挸〳摢ㄸ㑣㌲〴挴㌶㍥㠶㥡㔹㜵ㅥ㉡っ挱摢挸愷搰扥㈰㙡〵戲㜲ㅢ戲ㅦ㜲晡㔰慦挱㐶摢㤲攴昹㈸㑥〵㘱ㄸ攴扤㐶〷㍣戵ㄲ昵摡㐰戰㉤㐹㍥㥦づ㠰攷㉣㐶㑡㌴捤㐵搰㈴〰ㄴ戳挹捦愴〵愰ㄴ㙣愳㡣愴㥣慤㙢㕦㤳ㅤ㘱㘶搵㙦愱㘸〸摤㌹㠴㐲㠷㠲愸㑢㤰ㄵ〰㐶㈲愷て昵愴ㅤ㠰㡢㔱㥣ち㐰ㄵ攴扤㐶〷㍣㜵㈹敡戹〱昰㔰㍡〰ㅥ戴ㄸ㈹㤱㍡㔷㐰㤳〰㌰㠹㑤摥㤰ㄶ㠰挹㘰ㅢ㔳㐸愶戲㜵敤〰㑣㌳戳敡㑡㈸ㅡ㐲㜷㡥愰搰㜴㄰㜵ㄵ戲〲㐰㉤㜲晡㔰㜷摡〱㔸㠵攲㔴〰㘶㐳摥㙢㜴挰㔳慢㔱捦つ㠰ㅢ搳〱㜰㠳挵㐸〹〰扡ㄶ㥡〴㠰㌹㙣昲㜵㘹〱㤸ぢ戶㔱㑦搲挰搶戵〳㄰㌶戳敡㍡㈸ㅡ㐲㜷收㔱㘸㍥㠸扡〱㔹〱愰ㄱ㌹㝤愸换敤〰㕣㡦攲㔴〰㥡㈰敦㌵㍡攰愹ㅢ㔱捦つ㠰ㄵ改〰㌸摦㘲愴〴ㅢ慤㠱㈶〱愰㤵㑤㍥㌷㉤〰㡢挱㌶㤶㤰㉣〵戱〱戰捣捣㉡㠶ㄱつ挱摢㌸㠹㐲㈷㠳愸摢㤰ㄵ〰㤶㈳愷て㜵㡡ㅤ㠰㕢㔱㥣ち挰改㤰昷ㅡㅤ昰搴㕡搴㜳〳愰㌵ㅤ〰㉤ㄶ㈳㈵㠲改㑥㘸ㄲ〰㔶戰挹捤㘹〱戸〰㙣攳㐲㤲㡢搸扡昶ㅥ㜰戱㤹㔵㜷㐱搱㄰扡㜳〹㠵㉥〵㔱敢㤰ㄵ〰㉥㐳㑥ㅦ敡㜸㍢〰㜷愳㌸ㄵ㠰㔵㤰昷ㅡㅤ昰搴㍤愸攷〶挰㥣㜴〰搴㔹㡣㤴〸愹晢愰㐹〰戸㤱㑤㍥㌶㉤〰㌷㠳㙤慣㈱戹㠵慤㙢〷攰㌶㌳慢敥㠷愲㈱㜴㘷㉤㠵㙥〷㔱て㈰㉢〰摣㠱㥣㍥搴っ㍢〰㡣㥡㑡〵㘰ㅤ攴扤㐶〷㍣昵㈰敡戹〱㌰㈹ㅤ〰ㄳ㉤㐶㑡搰搵㈳搰㈴〰㍣挴㈶㡦㑦ぢ挰㈳㘰ㅢ㡦㤲㍣挶搶戵〳戰搱捣慡㐷愱㘸〸摤昹ㅤ㠵㥥〰㔱㡦㈳㉢〰㙣㐲㑥ㅦ敡㌰㍢〰㡣挲㑡〵㘰㉢攴扤㐶〷㍣戵ㄱ昵摣〰㈸㑥〷㐰㤱挵㐸㠹攸摡〴㑤〲挰昳㙣戲㍦㉤〰㉦㠲㙤扣㐴昲㌲㕢搷づ挰㉢㘶㔶㍤〹㐵㐳攸捥㜶ㄴㄸ㝦〲㔱㕢㤰ㄵ〰㕥㐵㑥ㅦ㙡㝦㍢〰㥢㔱㥣ち挰㥢㤰昷ㅡㅤ昰搴㔶搴㜳〳㘰㔰㍡〰昶戲ㄸ㈹攱㘳㝦㠰㈶〱攰㝤㌶㜹㡦戴〰㝣〸戶昱ㄱ挹㕦搹扡㜶〰晥㙥㘶搵搳㔰㌴㠴敥㝣㑣愱㑦㐰搴㌳挸ち〰㥦㈲愷て搵搷づ挰ㅦ㔱㥣ち挰ㄷ㤰昷ㅡㅤ昰搴戳愸攷〶㐰㙥㍡〰扡㔹っ㘷㔸㕡捥ぢ搰戴ㄳ攱㐴摤搹攰昰慣挶搰㈲挶㍦昴ち攳换㠲搵㉤昸捥㡣〴㙢昴っ㡦㠹㑤㡤㈵挶㌴㌶㉦㡣〴㤷散ㄲ戶ㄲ戳攷㠷愲〸愵㡡㈳愲捡㔱ㄶ㕢戸㌰搴㘰㠴㙢㘳㉤昱晡搰挴㌱扦㠶㔰㉢昸㠷㔳㈷㔱㔶㤹ち㐷搷愲㠷㌲㔰ㄳ扤〴㐷㐶捥㑢㔰攸っ〲戱㉤ㄹ戴慦㑥昹㈰搸扢ㅤ搱ㄹ㡤㠹㐸愸㝢㔸昸㤲捥つ〳㐵挴愷㌵㜴ぢ捦㤸㡦攰㠸㌱㍤挳攳攳㡤つ㤱挶㘸㠸㈷〳㉢㕥晣〶收攴搰㍣挴愲㑤㡢㌵㌷昲摢愱㍤挳㌳攲挱㘸昳㐲㠶搵搴㉦改㥢㤴㤳㑦㠱㌹攱搱㡤搱㘶㤸㤱戳挸㜴敦㜰敤晣搸㈲㝣㔱戹愵㈹㍡㍥戸戰昹㔷㜱㔶ㄴ㑦㡢ㅣ㜲㙡㔴愶捡捣㔴戹㤹戹㕤㍤㍦㥥敦㌰挶㜶㙢㡦戰捥㐳㕦㤵㠸㕤㠲㈶㜶〲愰搹㈴㜲ㅥ㌳㜲㕥㐶慡㠳㤵ㅦ慥晦㔸㔱㠲㡣㠰㘳㝢㤳扥愱攱ㅡ㡣搵昶つ㜰慥昹ㄸ摦愳㐹㍤晥〳㌲㘹晣捣㠹敤戱愱晦搵搷愹㜳戶㐱戳昳㜳戵戳昷戵㠵攲昵㠷㜰㉦戳ㅢ戱㡣扤ち愳ㄳ扤㠱㌹㘷搷昴㠶㐵㠶扤戴㔷㝢㜲ㅣ愲戹㝡㠴ㄱ㤷ㅦ㡡㈰〸慤㈹㤸攸㘵㘶戸ち搶ㄴ㡣㌴㕢扣敡㔸㔳㔳㤰摤㡥㕤戶戶㍥ㄸ〹攵㠶慢㕡ㄲ㌱㝣ㄳ搷〸㠳㐸摦戴㡡㠲㡢㔱ㄴ㕣㉣㐵㍤挲搳ㄹ㥣㉡㘹敡㡡捤ぢ挶ㅢㄳ昳㥢ㅡ敢㜳㤹㘱〰改慦愲扦㘲づ挹〶㤸晡搰昳㠹㜳㕤挷㕣攱挰改㉥挰〲㈶愱攳改㐷慦捥㔴ㅥ晣愹㉥挶㉥㘲昶㤱㡢㡡昱㈳戴㜱㉤㑣愶㈳㘹换㍦㈴㈶〸挹㝦㜰ㄷ㔶㈶㈸戵㥤〲㜸ㅢ㍦㐱㤴〹扥戳晦〴搲㘱㘰㕢㌷〸㜸㈷挷㠲つ攳戰收ㅥ㡢㜷戳扥晥㥦㡢㔳换改㈶敥㘳愸㘱㌵愲㔷ㄱㄵ摢摡搸㄰㡡攷戲愰ㄶ㙢㔵搹っ㔲昴㤸攷㄰敢ㄸ㔹ㄹ㌹㌹摤㜳摤㙣㑤搴扡㠶㕡〱㕣昶挷㈷㑣㑣搱晦挹ㄱ攵㡣收㠰㕢㜲㤹㘲㕣戸愱㐰搴慢㈸愴㍦づ㠱㑣ち挰㝣㐶捥㙢㘰㍡捦㑤㜲搴ㅦ㘲〳つ〸㘵换ㄷ攷ㄹ㡦㤸㡢搸㍤〹㘴捣ㄱ㐷扡摢〲㄰㍤㘶散㘱慥晥㌶扥愷ㄶ扤㍣搴攰㌵攷㔸慥搴攱敡㤰㤱㤹㤹㡤㔳敤㜱㙥㠶愴㤸㠵戲愶摡㤰㐴㈶慡㐱㘸㠲㈷ㅢ㉤挶户〹ㄳ㌱攸慦㜳晢ㅥ㝡捡ㅤ㠵搷㙢㜸㔰㈹挳慢晥っ慡㤱攸挵ㄲㄳ慡㙥㐴㈲ㄷ㐴㝤㠰㐲摥ㄳ搸慥㘰敡㈳㘴㜹ㄵ换昰昰愱ㄳ㍢㌳㙢慡扦愲ㄶ㘷㑥挳㑢攵㝦㐳㡡ㄳ㔲㕢〷敤㠱搲捥㍢攸挷慣㠱户搱㤳㑡慣㡣晡〴〹敤ち㤲摡㤵㕥㤰㌱㝡㔳昰㔳㜷〱ㅦ〵晡㔰攰㌳〸昰捣㝢晡㈲搷㕤㈳㍡〱摦㝡㝤〵愵㕣慦挳㍦㌹〰㘰㍦挸〰挰㉦㐱戵㔵ㅢ㠰晤愹㜴㔷㉡晤ㅥ〲㑥〰㝦㐰㤹〹攰㙥㄰搹㈹〰㝦㐴㔵〱㜰〰㤵戳㐱㐹〰づ㐴㘹攷〰戲扢〹㠰㝢㔰〹㜴挸㥢㐱㜴摡ㄵ㤴㘹〰昷㠴㡣戱ㄷ〵戳摣〵〶㔱㘰㙦ち㘴㐳㐰〰捣㐳㙥ㅦつ愰摢户摤慣敦敦扢〱㍢〴㜵〱㉣攳昱㜴㙢㙣挰敥㐳㘳㐳㘹㡣戱㜳㑥㘰ㄹ㌰㘷〲㥢て㤱㥤〲戶ㅦ慡ち戰晢㔲㌹攳敤㤲㠰摤ㅦ愵㥤〳换戸㍣扣昰摣〴㉡㐱㐲摥っ捥搳慥愰㑣〳㝢㈰㘴㡣㘱ㄴ㘴攰㥥㡢挰㜰ちㅣ㐴〱挶昲〹戰〵挸敤慥㠱㙤晢㙡慥㝥攲㠰ㅢ㥣㠵愸〱㌸ㄹ摤愷㑤搸攰昴搳㐴㠰㈶ㄸ㠹攷㠴㤳攱㜷㈶㥣㐵㄰搹㈹㌸ㄹ戴㈷㜰ㄶ㔳㌹愳昷㤲攰㉣㐵㘹攷㜰㌲捡て㉦慣戸㔲〹ㄲ昲㘶愸㥦㜶〵㘵ㅡ捥㜲挸ㄸㄵㄴ㘴ㄸ愰㡢挰〸ちㅣ㐲〱㐶〶ち㥣㠷㈲搷㍥搰〳慥〳晤㌰挸〰挰㘲㥢㔲ㅢ㠰愳愸戴㤲㑡ㄹ挹攷〴㜰ㄴ捡㑣〰慢㈰戲㔳〰㔶愲慡〰㌸㥡捡慢㤰㑢〲㜰っ㑡㍢〷㤰㔱㠲㜸㈱㌰㤰㑡㤰㤰昷ㄸ㔰ㄷ㝣挶㐱挶ㄸ㑦㐱㠶ㄱ扡〸㑣愰挰㐴ち㌰戲㔰〰㥣㠴㥣つ挰㈲户ㅥ㌸ㄹ㌲〰㤰搱㠵㕡愹つ挰㈹㔴㍡㤵㑡ㄹ〹攸〴㤰攱㝦㈶㠰㌵㄰搹㈹〰ㄹ㌴㈸〰㑥愳㜲㐶て㈶〱㌸ㅤ愵㥤〳挸㈸㐳扣㄰愶㐸㈵ㅡ㐰㠶ㅡ㙡㔷㔰愶㝢攰っ挸ㄸ㌳㈹挸㌰㐴ㄷ㠱㔹ㄴ㤸㑤〱㐶㈶ち㠰扦㐱㙥愰ㅥ搰搵㈹㡦㥢㜰挳昳㈸㔴〱㥥㜳㙣㌶㙣㜸ㅥ㑤ㅢ挷搰〶〳ぢ㥤㜸㌲㥡搰挴昳㔸㠸散ㄴ㥥㡣㐱ㄴ㍣㡦愳㜲〶㈳㈶攱㌹〷愵㥤攳挹愰㐵扣㌲㡣㈰㤵㈰㈱㙦㐶㉥扡挰㌵ㄷ㌲㐶㍤〵ㄹ搵攸㈲搰㐰㠱㄰〵ㄸ攸㈸㜸㠶㤱戳㜵挸㐲㌷〰攷㐳〶〰㌲搸㔱㉢戵〱搸㐸愵挷㔳㈹㙦㠹㥤〰㥥㡡㌲ㄳ挰〵㄰搹㈹〰ㄹ挳㈸〰㐶愸㥣挱㡣㐹〰㐶㔱摡㌹㠰っ㝡挴ぢ㑦㘸愰ㄲつ㈰㈳ㅦ戵㉢㈸搳ㅤ㜲㈱㘴㡣ㄳ㈸挸愸㐸ㄷ㠱㌸〵㥡㈹挰㐰㐹〱㤰㑦ㅦ㙢〷搰㕦收〶㘰㉢㘴〰㈰㠳㈵戵㔲ㅢ㠰㡢愸㜴㌱㤵㌲戰搱〹㈰愳ㄹ㑤〰㤷㐰㘴愷〰㘴っ愴〰戸㤴捡ㄹっ㤹〴攰㌲㤴㜶づ㈰㠳㈶昱挲敥〴㤵㈰㈱㙦㐶㑥㙡㔷㔰愶〱㍣ㄹ㌲挶㜲ち㌲慡搲㐵攰ㄴち㥣㑡〱〶㕡ち㠰愷㈱搷づ㘰愰搴つ挰㌳㈰〳〰ㄹ㙣愹㤵昶㙥户㝡㈶㤵㥥㐵愵っ㡣㜴〲挸㘸㐸ㄳ挰戳㈱戲㔳〰㌲㠶㔲〰㍣㠷捡ㄹ㑣㤹〴攰㜹㈸敤ㅣ㐰〶㕤攲㤵㘱㥣㑦㈵㐸挸㥢㤱㤷摡ㄵ㤴㘹〰㔷㐰挶㔸㐹㐱㐶㘵扡〸㕣㐰㠱ぢ㈹㜰㍦〴〴挰㡢㤰ㅢ慣愷挴戴㑦㐹㜱㠳昵㘲搴〴慣っ攱搴愶㙣晤昲ㄲ㥡扡㤴愶㌶㐱挰〹㉢㘳㉣㑤㔸㉦㠳挸㑥挱扡〵㔵〵搶换愹㥣㈱㥡㐹戰㕥㠹搲捥㘱㘵㈸㈷㕥〸昲愵ㄲ㈴攴捤㜸㑥敤ち捡㌴慣㔷㐱挶㔸㑤㐱挶㝡扡〸㕣㑤㠱㙢㈸挰昰㑦㠱昵㕡攴〶㘸㔸摢㙥ㅤ慤愷扡戸愱㜹㍤㉡〰㑤挶㠳㙡ぢ㌶㌴㙦愰㠵ㅢ㘹㠱戱㥢㑥㌴ㄹ戰㘹愲㜹ㄳ㐴㜶ち㑤㠶㜹ち㥡㌷㔳㌹攳㍤㤳搰扣〵愵㥤愳挹戸㔰扣㌲㡣㕢愹〴〹㜹㌳㌸㔴扢㠲㌲㡤收㙤㤰㌱搶㔲昰㙤㜷㠱摢㈹㜰〷〵㜶㐰㐰搰扣ㄳ戹晤㌵㥡㥤㍤㥦挶つ摤扢愱〰攸扥㙦戳㘸㐳㜷ㅤ㉤摥㐳㡢っっ㜵愲换㘸㔰ㄳ摤㝢㈱戲㔳攸㌲㠶㔴搰㕤㑦攵っ㈶㑤㐲昷㝥㤴㜶㡥㉥㠳㑥昱捡㌰㌶㔰〹ㄲ昲晥ㅡ搴〵摤〷㈰㘳㍣㐸㐱㐶愵扡〸㍣㐴㠱㠷㈹挰㐰㔵㐱昷ㄱ攴扣ㅡ摤挹慥户攵㡦㐱〴昸㌱㔶㔵敢戴攱昷㌸㜵㙥〴挹㘱ㄴ㔸〷ぢ㥥〸㥡戱挵ち㔲㠳㈷㍣㌳摡㤸挰㕡㈴敤㡦㙢㑣㘰㔵愵㐷ㄸ〴㐹〹敡ㅢ㈸㙢㤴戶㑡挳摡昶㍦昶㑥㘵㈵㙤㠸っ㑡攵摢㜷㐸㠶扡戰捤扤ㄳ摢㤶㐹㘷㐲戲㠷攲搲挶㕦搳愶㡡㌲㠳扤慣㝤ㄵ㤵㥦㍥㈴搲㠶㍢搷挴晦㡢㉤ㄸㄹ㠳搸㡢㘵户㔱昸挳ㄲ捥㈶愴戹㈳㤳摤㘹ㄷ戱㐵㠸㜲㈹搱换㕤ㄹ戳慣愷ㄵ㠲㍣㌱摡㡣㌵㑤慦㤵挳㡡㜵㉦㉢㔹搳㤲㐸攲〴ㄷ敦㘲㜱昰㝤搳㥡㈸昶ㄹ敡昱㐰慢㕦挹㈲㌵㝣㌳昷㔳㘴扤戹㡢㝢㕤㔰挲挳戶戴㡣摤换㈷㉤慣㌹戹散㑣㠰㙤㙦㘸敡㐹戸摢攲㙥㜳㤹㥢ㄲち㐶攵㉣搴㈶ㅡ挶㠴㕡㘵攳㜱㕡〸扢㠶㜸㘸㘹㈴戴㡢㔴㘸换捡㠲慣ㄱ慥㥡摢㡣㑤慣〴㜷㈷慣㤴っ㜴㈳㍣㍤ㄴ〹昲攱㄰搸㑣戰㔲搳敡ㄳ〸㈷㙦㔳挰〷㍦晣㝡捥㄰㄰挹戶捥㤲㤲昳攴改㘰㝥㑢㜶㠲㘳愸㡢㘷ㄵ昳㙣㔸㡥捦㐶愹慢㔶昱㔸㍢㉡㐳㈷慣慤㑤て㑥㙥〷㝢㘲㤸㙢敤搱搰ㅣ㐹扢攸㈰㝤㜳㠶㤳挹慢㠷㉥攳挶㔹㑦㙥㜲挶昹ㄸㅤ㍥敢慣㌷㠷㑥〴㍢ぢ㠹㐶散ㄱ㐵㤶昴ち㑦㡣搶㐷㕡ㅡ㐲戲挱愴攷㙣搹㘷晡㔵㥣㉦㉥㠸㕡㈳慡〳㕣㉣㔰㈶攲㠱捦晡㘹ㄹ㕤摦㘹㌶㌶㘳愴挹㘴〷ㅤ㕥㘳慢㌵敥扡攱搴散㜴攸戹ㄷ慤敦摢晥挵〹㜹っ㌰愶戶㤴㈲捥㘹㡣㈳慥搶搱敢㌲攲㙣㘲㤳㘳㤳㘳摣愹戶ㄵ㑤㘸㌴㡢㝥ㄵ攷〹㝥㥡愷挹攳挱㌶㕢搷㐶挸ㄹ㤵攵ㄷ摣昶户戵㔵搴挵晤戴摤㍥摤㙦攳〵慦㝥㡥㈵㐰㜳㕢㡤戱攵扣㘹㔳㥥摦攳㥣㜴㙦㝦〴ㅤ㙡愰㥢〴挰捡㈴戱挴扤㄰㤷ㅢ戵愷㈰慤ㄸ㡥㙥摥愸㤹攷搶㜸ㅡ愵㥤摦愸㌱㙣㥤㕤搰昸㈳㤵㈰㈱㙦挶慢敢㝢㈶搳愰散㡦㍤〳ㄹ攳㔹ち㌲㤶摤㐵攰㌹ち㍣て㤲挳㤰㘶攷愴㤳㌶㍡ㅢㄵ㌲㜲㥡戸捤㤵摢挴敤㍥っ㔹て㥥昲㠱攸㜳㙣ㄹ㝡扡攷㌲㝡摢㜸〱㔲捦㍤晢散㐸戶㐷㌱晣㔹摢㘷ㅦ戴㜶愵㕥愴晤㤷㐰ㄴ挳㤴㥤㌷挵㡣㑤㌶㙦㡡㕦㠶挸㑥摤ㄴて㐶㔵挱㝡ㅢ㤵㌳戴㌹改愶㜸㍢㑡㍢挷㝡㈸慡〹搶㝦愲ㄲ扡挱㜷㍥㑡戵㉢挸㙢㔷㕥㠵㡣昱ㅡ〵昷㜵ㄷ㜸㥤〲㙦㔰㘰㍦〸挸㑤昱㥢挸つ搵㌷挵㙥㥢㉡晡ㄱ㠲㙥ㅦ㌷摥㐲㘵摣㉥㌳愶㕡㌷挷㜶扢晣ㄷ㕡㝢㥢搶ㄸ晦散㐴㤶㐱捦㈶戲㍢㈰戲㔳挸㌲㔴㕡㤰㝤㠷捡ㄹ㌳㥤㠴散㝢㈸敤ㅣ㔹挶㔶ぢ戲敦㔳〹㔱攵㥢〱搶摡ㄵ攴㌵戲ㅦ㐰挶昸㤰㠲㠷扡ぢ㝣㐴㠱扦㔲㠰昱搸㠲散摦㤰㙢㕢㜱㐸晢搰㐳㌷㔸㍦㐶㑤挰㕡㘵㌳㘵㠳昵ㄳ㥡晡㤴愶㈶㐱挰〹㉢㐳愹㑤㔸㍦㠳挸㑥挱捡〰㙣㠱昵㜳㉡㘷㈴㜶ㄲ慣㕦愰戴㜳㔸ㄹ戱㉤戰㝥㐹㈵㠴㤴㙦㠶㙤扢挰晡ㄵ㘴㡣慦㈹挸㤰㙥ㄷ㠱㙦㈸昰㑦ち㌰捡㕢㘰晤ㄷ㜲㙤㙢摢愹㡦㘶㜴挳昳㕢㔴〱㥥っ晣搶㌶㙣㜸㝥㐷ㅢ摦搳〶㠳戴㥤㜸㌲㌲摢挴昳㍦㄰搹㈹㍣ㄹ捦㉤㜸晥㐰攵つ挸㈵攱昹ㄳ㑡㍢挷㌳㡣㙡㠲㈷㍦摤戴攱㌹て愵摡ㄵ昸愶扢㈹挳㐱っ散昸㘷㈸㐶㠸扢〸㘴㔱〰㡦昸挲㍡㍥〴〴捦ㅣ攴㝣㝡〲搰捦㤲㜴㐳戱ㅢ〴㠱㈲愳挷戵㘶ㅢ㡡戹搴捣㕦㡡㔰㡣昴㜶愲挸昰㙥ㄳ㐵㉦㐴㜶ち㐵〶㠵ぢ㡡摤愹㥣搱攱㐹㈸昶㐴㘹攷㈸㉥㐳㌵㐱戱ㄷ㤵挰て㜹㌳㤴㕣扢㘲㐳戱㌷㘴っㅦ〵ㄹ㘶敥㈲搰㠷〲㝤㈹挰挸㜳㐱㜱ㄷ攴㙣敢戳㝥㌷〰晢㐳〶〰㌲晡㕣㉢戵〱戸㉢㤵敥㐶愵㡣ㄴ㜷〲挸昰㜰ㄳ挰〱㄰搹㈹〰ㄹ㔴㉥〰敥㑥攵㡣㉥㑦〲㜰て㤴㜶づ㈰愳搰〵挰㍤愹㐴〳挸㔰㜴敤㡡つ挰扤㈰㘳っ愲㈰挳搴㕤〴昶愶㐰ㅥ〵ㄸ戹㉥〰づ㐶慥㝤㜱愶搸つ扦㝤㈰〲晣ㄸ扣慥㜵摡昰ㅢ㑡㥤昹搴挹㐰㜳㈷㝥㌷愳捣挴㙦㕦㠸散ㄴ㝥㙢㔰㔵昰摢㡦捡㙦㐱㉥〹扦〳㔰摡㌹㝥っ㘲ㄷ晣づ愴ㄲ㡤ㅦ㈳搹戵㉢㌶晣㠶㐱挶ㄸ㑥挱摢摤〵づ愲㐰〱〵ㄸ昸㉥昸ㅤ㡣摣㈰㍤㡣摤㥦ㄲ敡㠶愹ㅦ搵㠰㈹攳攱㜵㐳㝡戳挴㡣搸〹搰㑥ㄱ敤㌰㜶摤㠹㈹〳搶㑤㑣㡢㈱戲㔳㤸㌲捣㕤㌰㉤愱昲挷㤰㑢挲戴っ愵㥤㘳捡戸㜸挱戴㥣㑡㌴愶っ㡥搷慥搸㌰慤㠰㡣㌱㠲㠲っ㥣㜷ㄱ㌸㠴〲㠷㔲㘰ㄳ〴〴搳㤱挸戵昷㐹搷㍤㤷㔱㄰〱㝥㕢㙤㍡㙤㝤戲㤲㍡慢愸㤳愱敦㑥晣ㄸ敦㙥攲㌷ㅡ㈲㍢㠵ㅦ愳攴〵扦㙡㉡㘷戸㝣ㄲ㝥㘳㔱摡㌹㝥っ慢ㄷ晣挶㔱㠹挶㡦戱昵㉥昰㡣㠷㡣㌱㠱㠲㡣扢㜷ㄱ㤸㐸㠱㐹ㄴ㘰㈸扥攰㜷㌸㜲扤㜵㥦戴ㅥ戹敡搶〹愷㐰づ㈰㌲㈴㕦㉢戶㠱㌸㤵㡡㙢愸昸㝤〸㌸㐱晣㄰㘵㈶㠸搳㈰戲㔳㈰㌲搲㕥㐰㍣㠲捡ㄹ㜲㥦〴㘲㉤㑡㍢〷昱敦愸㈶㈰捥愰ㄲつ㈲攳昳戵㉢㈸搳攳㘹㈶㘴㡣㔹ㄴ㘴散扥㡢挰㙣ち晣㠶〲っ攷ㄷ㄰㡦㐴慥敤〶扤愳㘷挴扡㈱㝢㌴㉡〳㔹挶晡㙢㙢戶攱㝤っ慤ㅤ㑢㙢㡣ちㄶ㉦㡥㘳捥昲㈲㠷㤱㥤捥㠰挵㤴㘰㔲戱㄰㘶㔸㘹㙤㘲㐹〴愱扣㑣㌲㠰搱㑣昱戳ㄹㄶ㌰㔱㠶戰捡㔸ㅣ㙢ㄷ搹捥敦㥤户搵㝤ㅥ㠶扢昷㜳㍣㐷㔴慡㤱挳愸搵㥣ㅢ扥㑦㝤㔶㘶㕢㝤㌶扣晤愱㠲慣挳挳㌳〷㑤散㌷愵戱㍥ㅥ攳愳晤昳㙡ㄱ慡㥥挷攷戲㠶戱㜸㔱㤵㜳ㅤ㌴扡摡愴㘳搹㔱晥㍥㔱㉢㥦㔳攸㕤㄰㡤㉤㡡㑡㙢㜲㥡昹㜸㕡挱慢㕢㌷㥡攱挷㐹㌹昶〱㜸㍥㐶戸戲戲㌱ㄷ戴㘷㤶㉦〳㌷㝡㍣㝣㑡㈷㌲㜵㈲换㑡攴㜸㤰昸戹㐱㥡搴慤收慡㝡搵愰㐲搹摤扡愵慣㜴愷〴㜷戶㍤㐵搲攳㘱㙣㘷捥㌵㜰搹戹㍣敥㕥㈹ㄹ㔱㔶㠶㙦昸㤲㈲㥡㘰㠴㐰扣扥㙥㘸㌸ㅢ攴〹㠳昶慡ㅥ㕤㘷㡢㔱昷捣㐳㔹ㅦ㤴㈵晦晡㤳㘷㍥㡡㝢愰㔸ㄶ㜴愶攳㠱戲㥥㐶㤴昴㐵〹ㅥ㡤愸ㅦ㤶挸㉥攴换戵戴ㅢ㠳㘹㜶〱愴㡣㈱㑣扤ぢ愲扣㘰捡㐹㠸愲㥣〹攴㌳㔴て㔰㜶㕣昵㕢㜸挹敥㠲挲っ㠳㝤㠰愷㕢㕤㠸ㄲ㥥昲攴㔳搶㔳摢㠹㐳づ愷慣ㄷ㔵攱昰昵搶〹㥦㑥昴戱ㄲ慡ㅦㄲ㍣㙤㙡㈵搴ㄱ㔲㠱㈶挱㌶戶㠰㜸㝤晤挱愴㔹㠳搰ㄸ挴挲愰攷〶㥤昵敤慡㤹晢㔳攲㐴㤶ㅦ挰㤴㜸㌶㠰㙡㤹㍢ㄹ攵㙤㥥つ㐴愹㜸㜶㉡㡣愵㝡戶ㅣ愵愹㥥敤愱敤㥣〶㔵昰㙣㑦攴㜹昸昶搲㠹㐱㍡戱户㤵㔰㐳㤰㄰捦㑥戲㝢㜶〶摢㜸㈶㠸搷户て〴㤰㜰昷㙣愸㘶ㅥ㑣㠹昳㔹慢㤰㈹昱㙣㕦㌰挵戳ぢ㔰摥收搹晥㈸ㄵ捦㑥戰㜹收戹〸㈲㘹挷慤㡡戹扡㝢㠰㌶㝥㌱㉡挳摤〳㤱攷攱ㅢ愶ㄳ挳㜵攲㈰㉢愱ち㤱㄰㜷㥢散敥㕥捡㠶㕦〶攲昵昹㈱㠰㐴㠶攷㜲㔰㘷ㅦ扦〲㘵㉥㝤晣㑡ㄴ㈷昷昱㔵㈸㜱敢攳〱㑢扢昹搳㑦慢㈱㈵扦晦㘴攲㔵っ愶攰㜵㉤捡摢昰㉡㐵愹攰ㄵ戴攱搵摥挷敢㕣愱㈹搳㜶㙥㠴㉡㐰㔳㡥㍣て㕦㠵㑥㡣搰㠹㐳慣㠴㍡っ〹㠱收㔸㍢㌴㌷戳㡤㙢㐰扣扥㔱㄰㐰挲扤㈷㔴㙡㈶ㄷ攰㡣㍢㔸敢㌰愶愴㈷㡣〶㔳㍣扢ㅢ攵㙤㥥㡤㐱愹㜸㜶㠴慢㘷㌵慥㥥㡤搵㜶搶㐳ㄵ㍣ㅢ㠷㍣て摦㜸㥤㤸愰ㄳㄳ慤㠴㥡㡣㠴㜸㌶挵敥搹晤㙣攳〶㄰慦㙦ち〴㤰㜰昷㙣慡㘶㡥愱挴愳慣㌵㤶㈹昱㙣ㅡ㤸攲搹㐶㤴户㜹㌶ㅤ愵攲㔹㤵摤㌳昶㜱㤹㤷㐶戹㝡㔶慢敤㍣〹㌹㜸㌶〳㜹ㅥ扥㤹㍡㌱㑢㈷㘶㕢〹㜵ㄴㄲ攲搹㐸扢㘷㕢搸挶慤㈰㕥摦搱㄰愰㔹㠳摤搹㘰晦㌵搸㕢つ㜶㔰摦㌱㥡㜹㌸㈵㥥㘱昹㘴愶挴戳攳挰ㄴ捦㥥㐷㜹㥢㘷㜳㔰㉡㥥昹敤㥥捤㠱㠸㜸㜶戰慢㘷㐱㙤攷㘵挸挱戳戹挸昳昰搵敢㐴㠳㑥㠴慣㠴㥡㡦㠴㜸㜶㤰摤戳㔷搸挶敤㈰㕥㕦㈳〴㘸搶㜵挶㍤㕥㌳愷㔳攲㑤搶慡㘵㑡㍣㡢㠰㈹㥥晤〵攵㙤㥥㐵㔱㉡㥥つ㜶昵㙣㙦㔷捦㘲摡捥扢㔰〵捦ㄶ㈲捦挳㜷㠲㑥挴㜵愲搹㑡愸㔶㈴挴戳扤散㥥扤捦㌶㝥〰攲昵㉤㠲〰ㄲ敥㥥㉤搶㑣㍥晤搰昸㤸戵昸昸㐲搳戳愵㘰㡡㘷㥦愱扣捤戳㘵㈸ㄵ捦晡戸㝡搶摢搵戳㤳戴㥤㉦愱ち㥥㥤㡣㍣て摦㜲㥤㌸㐵㈷㑥戵ㄲ敡っ㈴挴戳㥥㜶捦扥㘶ㅢ扦〱昱晡捥㠴〰ㄲ敥㥥㥤愵㤹㜳㈸昱㍤㙢〵㤹㤲㜳㜶づ㤸攲搹㡦㈸㙦昳散㍣㤴㡡㘷捡搵戳㥦扥㜳扢㑡㥥慦敤㘴收㠸㘷㉢㤰攷攱㕢愹ㄳㄷ攸挴㠵㔶㐲㕤㡣㠴㜸昶〳㔴㕥〳㘳㤹愸㘰㘴㐳㠱㤱〳攲昵㕤〲㠱戴㥥㕤慡㤹昳㔸慢㍢㙢捤㘷㑡㍣扢ㅣ㑣昱慣ㄷ捡摢㍣扢ㄲ愵攲搹ㄷ㌰㜸〳っ㐲ㅥ㡦ぢ愰〹摥搹㝣敥敡搹㉡㙤愷㉦㔴攱㥣㕤㠵㍣て摦㙡㥤戸㕡㈷慥戱ㄲ敡㝡㈴挴戳㑦敤㥥昵㘳ㅢ晢㠳㜸㝤㌷㐰㐰㍣㜳㥢㐱㙥搴捣㈸捣ㄸ㝢戰㔶㡣㈹昱散㘶㌰挵戳㐱㈸㙦昳散ㄶ㤴㡡㘷敦搸㍤㥢愳㍤㝢摢搵戳㕢戵㥤㈱㔰〵捦㙥㐳㥥㠷㙦慤㑥摣慥ㄳ㜷㔸〹㜵㌷ㄲ攲搹㕢㜶捦㠶戲㡤昹㈰㕥摦㍡〸愴㍤㘷昷㘸㘶ぢ捣ㄸ挳㔸慢㤵㈹昱㙣㍤㤸攲㔹〱捡摢㍣扢ㅦ愵攲搹㑢慥㥥扤攰敡搹〶㙤㈷〰㔵昰散〱攴㜹昸ㅥ搴㠹㠷㜴攲㘱㉢愱ㅥ㐳㐲㍣㝢捥敥㔹㌱摢㔸〲攲昵㍤づ㠱戴㥥㙤搴㑣㍥㍡搰㌸㠴戵㑥㘲㡡㥥攵㍣〱愶昳攳㠲敤摢㥤戶㘸ㅡ㝥㕢捦㘷ぢ㜱㤲てㅥ㝤挲㐷戴〴㈳昸搵搷ㅡ散戳㈷㔸昴㙢搸㥤捤㌶愳ㅤ㍡晤捣㈵㉥ㅣ㝤㉣㍦晡㌸㌱㐸晥挸㘴昹㈶㑦敢敦摡㕥慦㌷攷㐹㥣扢㥦㘷㠵ㅤ慣晤愳㉥㕢㠷㤳㠴㠸㤸㔱㍣搷㜸㠸昹㈶㘴愵㌷㔶愲㈰ㄳ㉣㥥㝡昵愴㉥慤㐲愹㍥㜲㌶愳昴攷〷ㄲ㔰敢㉥敤㕦㤱攴㤷㘱㠷㐵㄰㔳昱㌳扥㝢㍣ㅡ㔶搵㔶户㌶愸愷㜴改ㄸ捡挰〴扦〷愹㥥㐶愹㡣㥥㐷㙤愳挷㌳づ㈲改㍦ㄷ㍣散㍡愴晥〸㑤搲晢㈷愰㌲㠶搴㌳挸昳昰㍤慢ㄳ捦改挴昳㔶愲昷ぢ㐸昰㘳愲㐷㈴㝦㐱攲㝢ㄱ㥡㘹挵㜱〷收㝢㐹㤷㥦㐶收ㄴ㌴搵㌸ㅤ㈹戵つ攵〲㑡㡤㠵づ㉢慢敤愰㠲捥㍤㌶㜴摡㍦〵摣敤ち挴㥦㔰㐹㠰愸㌵㠱㜸㤵慡㜰昸㕥搳㠹搷㜵攲つ㉢愱摥㐲㐲收㤶㍢愱戲敤㑡㌷㤳捤㥢〵攲昵晤〵〲㘹攷㤶户㌵昳㕣㤸㌱㡥㘱慤昳㤸㤲㔹昳ㅤ㌰挵戳㍡㤴㌳㠱㝣㠶㝡て㔴㍣扢摥搵戳㙢㕤㍤㝢㕦摢愹㠷㉡㥣攲て愸ち㠷敦㐳㥤昸㐸㈷晥㙡㈵搴挷㐸㠸㘷㔷摢㍤ぢ戱㡤㘱㄰慦敦ㄳ〸愴昵散㔳捤攴㠳扥㡣〸㙢晤㤶㈹昱散㜳㌰挵戳ㄸ捡摢㍣晢〲愵攲搹㐵㜶捦摡慥攱ㄷ戸㝡昶愵戶搳っ㔵昰散㉢攴㜹昸扥搶㠹㙦㜴攲㥦㔶㐲㝤㡢㠴㜸戶挲敥㔹ぢ摢搸ち攲昵㝤〷〱昱捣敤ㅡ晥扤㘶昲〹㕥挶㌲搶扡㤲㈹昱散〷㌰挵戳攵㈸㙦昳散㈷㤴㡡㘷愷搸㍤㥢㐳ㄳ扣㍢㌹搹搵㌳戶㐰ㅡ㜱㍡㔴挱㌳晤㝤㜶㕦愶搴㠳㡢摣戱攴攱换戶ㄲ慡ㅢㄲ攲搹㌲扢㘷㘷戲㡤㘷㠱㜸㝤摣㡡愴戰敢愷〰㐳㌳慦愵挴ち搶扡㡥㈹昱慣㍢㤸攲搹㠵㈸㙦昳㡣㕢㡣攲搹㐲㔷捦愲慥㥥昵搲㜶㉥㠱㉡㜸挶㑤㐵ㅥ㍥㥦㑥㜰ㄷ㔱㑡晡㕡〹搵ㅦ〹昱㉣㘲昷散㌲戶昱㜲㄰慦㙦㔷〸㔰搸搵戳摤㌴㜳つ㈵慥㘶㉤㍥㌴换昴㙣㜷㌰挵戳敢㔰摥收搹ㅥ㈸ㄵ捦收戸㝡㜶㥣慢㘷摣〱挴㉢挳戸〹慡攰ㄹ㜷晢㜸昸〶改〴户昷愴㈴捦㑡㈸㙥摤㠹㘷挷搸㍤㕢㈳㙤〴昱晡㠶㐲㠰挲慥㥥攵㙢㈶ㅦ愶㘵摣挹㕡㝣ㅡ㤶改搹㝥㘰㡡㘷敢㔰摥收搹〱㈸ㄵ捦愶搹㍤㙢ㅢ㘷㔳㕤㍤攳摥ㅣ㕥㜸搸㌷㔴挱戳㘱捣攰昰㜱㉦㑥ㄲ摣㜸㤳㐴㠱㤵㔰摣㐰ㄳ捦㈶摢㍤摢挰㌶㍥〰攲昵〵㈰㐰㘱挷㕣㙦㝥摡收摥㥡㌰敦愳挴㘳慣挵挷㕣㤹㥥㤵㠰㈳㥥晤づ攵㙤㥥㤵愱㔴㍣慢戴㝢㌶㠷㕡㌸捥づ㜳昵㡣㍢㘴㤴㌰㌶㐳ㄵ㍣慢㄰㜱㜸挶ㅤ㌱ㅥ扥㐳㜴㠲㕢㘰㍣ㄴ户戶挴戳㐳敤㥥㙤㘵ㅢ㝦て攲昵㔵㐲㠰挲慥攷㡣扢㕥挲攴攳慦㡣㘷㔹㡢捦慦㌲㍤㤳㕤㉢收㕥㐰㜹㥢㘷㘳㈱㉦㥥ㄵ扡㝡㔶攰敡ㄹ昷慥挴捥㌶愸㠲㘷攳㤹挱攱攳㕥㤵㈴㈶敡〴㌷愷㜸㈸敥㌷㠹㘷挳敤㥥㙤㘷ㅢ晦〴攲昵㑤㠵〰㠵㕤㍤攳㔶㤴㌰㌷㔱攲捦慣昵㈴㔳㌲㠳挸㔶ㄲ㜳㙦愳㥣㥥挹㥢㕢㐹攲㔹㥥慢㘷㠳㕣㍤㥢愱敤扣〷㔵昰㙣㈶㡤攲昰捤搲㠹搹㍡挱ㅤ㈳ㅥ敡㘸㈴挴戳㍤敤㥥㝤挰㌶㝥〸攲昵㜱换㠷挲慥㥥㜱㉢㐸㤸㝣㘰㤵昱〹㙢㍤捤ㄴ㍤昳ㅤ愷㤹㥦㑢㜳㜲收㈲㝦㐸晡ㄸ㝢摢㌶挰㌰㠴愲㈶晤㜲摤㔸晣ㄲㅤ挳㍡㌲戲昰㡣づ昳挹ㄶ搹㤹㈳扡愶㡢昷攷っ㐰收㍢挷〷慦晦ぢ㍤㍣㔷敤㌷搵搴戸㌷摥挶ㄷ㜰戸㜷〳摣攵㡤愰攳㘶昰ㅦ愳㔰挶愳㔲㘸㐶慥昵摦㘷晤敦㔷搹㍢愴㙢ㅥ慢〶㕦㕣㤵戳㘳戹昳戱慤㔲昳搲㤷捣ㅡ攷㙣㌳晦㉦摢㕥愹ㄶ愰㘶㍥戸挶づ㤲㜷㐸愴㤳㜵㠷㥢㙦攰挱ㄱ㈹扦づ攵戵ㄸ捥㕦㠷昲㐵愱〹慦っ攳㕦㜲昲㔴ㅣㄹ㥥㐰㤵㡢ㅡ㐴㑤ㅣ晤㤶㡥㈶㔰摣㌵㐷㕢㜴捤㜴㡥㑥㜹㜲挷㌷㕦晦㔸㔲㌹敢敢戳挳搷㉥㉣慦慣摢昷攰㔷挷扦㍢愲㔲㥤㠸㥡㙥㡥㘶㔹晥愴㌸㥡㘹㌱㥣扦〲攵㍢ㄹ㥡昰挲㘳㘶㑣㐷㑦㐳㐶ㅣ捤戰㍢慡攰㘰敦㌳挰敡㥡愳㘷敡㥡改ㅣ扤挵㍢㉥扦㈵昳慡㔱晡晦摦て换㔸㍢攵敡慢㐷愹昳㔱搳捤搱敦扦㑤㜳㐶扦戳ㄸ捥㕦㝢昲㕤〰㑤㜸攱攱搳昰愱㘷㤶扡ㄸㄹ㜱昴摦愸搱㜶㐶つ㍡㝡㈹㔸㕤㜳昴㌲㕤㌳㥤愳㘸〰㍥㡢㕤㔶㜹捦搱攷ㅣ昲搴㠰换㉡㐷㍦昳敥㝥㙦ㄶ㕦㔱愹㔶愳愶㥢愳㕦愵㜳昴㑢㡢攱晣㔵㈷摦戵搰㠴ㄷㅥ户㘲㍡㝡㈳㌲攲攸㍦散㡥昶愱愳㌷㠳搵㌵㐷搷攸㥡改ㅣ晤㘷昴摤慢捥扦昳昹捡扦㍣㜳㔲晣㉣敦㑢㤵㔵㜳捥摢敤愹㡤㉦㔷慡㍢㔰搳捤搱㡦搳㌹晡㜷㡢攱晣昵㈶摦摤搰㠴ㄷ㠲挰㑣㐷搷㈳㈳㡥晥搵敥攸敥㜴昴㝥戰扡收攸〶㕤㌳㥤愳㍣愱捦㐷㑢慢昶〸捦摦挲晦㠳㐶扥㝥昳慥㜷㤵㔷愹㐷㔱搳捤搱昷搲㌹晡慥挵㜰晥㑡㤳㙦㈳㌴攱㠵挷扢㤸㡥㍥㠹㡣㌸扡挳敥攸㘰㍡扡〵慣慥㌹扡㔵搷㑣攷攸㌱㍤てㄹ昸搷㘷㕦慡晣㝡晢ぢ㑦㡤㜸㙡㕢攵㡡㙢ㅢ㕡㔶㙥挲慣晢っ㙡扡㌹晡㘶㍡㐷摦戰ㄸ捥㕦㘳昲㍤て㑤㜸攱〷挹㑣㐷㕦㐶㐶ㅣ㝤捤敥攸〱㜴昴ㄵ戰扡收攸㜶㕤㌳㥤愳慦愹㡦晥戵昹捡㉦㐶㡤扤愸攲捣挳㔷㝥㌵㙡晤愰ㄵ㝤户㥤晡捤㈸昵㈶㙡扡㌹扡㉤㥤愳㉦㕢っ攷慦㉥昹晥〲㑤㜸攱户搲㑣㐷摦㐵㐶ㅣ㝤搱敥愸㥦㡥扥て㔶搷ㅣ晤㐰搷㑣攷攸敤㜳㘶㑣摦敦晡㝢㐷ㅤ晣搶㔰捦愹㤷摤㌷敡晥㈳扦㜹昸㡤昳㌶㡣㔲ㅦ愳愶㥢愳捦愴㜳昴㡦ㄶ挳昹敢㑡扥捦愰〹㉦散搰㥡㡥㝥㠹㡣㌸晡〷扢愳ㄵ㜴昴㙢戰扡收攸㌷扡㘶㍡㐷搱〰摣㜰搴㔷慥捥㥣昴㑥㘸㑥㝤攵㕦㌲ㄷ昴㔹㌸㉤㔴愹扥㐷㑤㌷㐷㌷愷㜳昴㐹㡢攱晣ㄵ㈵摦㡦搰㠴㔷㠶㌱捡㜴㤴晢㈲攲攸ㄳ㜶㐷慢攸㈸㜷㍣扡收㘸㡥慥搹愱愳㌷慦慢㍣攷摣挹慦ㅦ戸㘶㕤攵〹〳晥㝥散捤昳敥慤㔴摣㉦挹㘷昳㜶㤰戴摦ㄹ㍤㥡捥搱㐷㉣㠶昳搷㤲㝣摣㘱ㄱ㐷挷㥢㡥㜲㥢㐴ㅣ㝤挸敥攸㐴㍡捡つ㤰慥㌹摡㕦搷散挸搱㈷㡥㝢愳㜲㜵晣㜸敦户昸摦攷攴㌷扦攸㤳昹㔶愵攲昶㐹扥㡢愳昷愵㜳㜴扤挵㜰晥㉡㤲㡦ㅢ㉥攲㘸㡤改㈸㜷㑤挴搱㝢散㡥ㅥ㐱㐷戹ㅦ搲㌵㐷昳㜵捤㡥ㅣ捤㤸晣㔶㈵㕣捡㘸晢扦搷㡥㑡挵摤㤴㝣㤴㌹捦攸ㅤ改ㅣ扤摤㘲㌸㝦晤挸挷晤ㄷ㜱㜴戶改㈸㌷㔱挴搱摢散㡥ㅥ㐹㐷戹㍤搲㌵㐷㑢㜴捤㜴㡥㘶㉥㈹敡ㅢ㥢㌷戶昲愲㈹ㄹ㘷㡤晥挳昸捡㐱㐳㥥晢戶晦〱㤳㉡ㄵ㌷㔷昲㕤ㅣ扤㈹㥤愳㌷㕡っ攷慦ㅣ愹㔱搰挴㡦㉣㐶ㅤ㝣挰敡㥢扣㝤㕣昰ㄷ昷攷愰搴〸㠲昴捣昴㔵愱㤰㠷㤲㈵㜸㈴っ㕤挲㡦㘱㍥㉥扡㑢㥤㝡㡡㘷㈹㉥㤲ぢ㘴㔷摢㈱ぢ㠱愹戸㈸㥤㑦〵㍢㐸〶愲扡昹㤹攴㡡㜴捤扦摣㘲㌸㝦ㅥ挲㔷愳㡤㉥㌰㡤搶㙡愳㤷摡㡤㌶㠱搹㝢㈶㔸昸㉦㙦晣搳挷捦昸昰㌵㑢搷㑣㜷㥥昴㉤扡晥摦㜶慢㝥っ㙡收挳㤲戳㐳㕥㤸捥搱ぢ㉣㠶昳㘷㈰㝣㜵搰㈴攸㌶㥢㡥搶㈳㉦攸慥戰㍢摡㐲㐷㐳㘰㜵捤㔱㉥㔷㑢捤㜴㡥ち㘸〳搶㔸户敡㙢慣㕢昵㕢㉢㔵〴㌵昳㕤ㅣ㍤㍢㥤愳㘷㔹っ攷捦㍤昸㘲搰㈴㡥㥥㘸㍡摡㡣扣㌸㝡㠶摤搱㤳攸㘸ぢ㔸㕤㜳戴㔵搷㑣攷㘸晥扣㙦㠷散㜸昴㐱㙢㉥㝤挴㥡㑢ㅦ慦㔴换㔰㌳摦挵搱攵改ㅣ㍤搹㘲㌸㝦搶挱户ㅣ㥡挴搱搳㑤㐷㑦㐷㕥ㅣ㕤㘶㜷昴㑣㍡㝡㈶㔸㕤㜳㤴㡢搹㔲㌳㥤愳㜲㐶㜷㕣㔴戹㜲搹戶戹搷攱晦昳摢昷愸㕤㜷搱挵㤵㙡〵㙡收扢㌸扡㈸㥤愳慤ㄶ挳昹昳つ扥ぢ愱㐹ㅣ㍤摦㜴昴ㄲ攴挵搱㠴摤搱㤵㜴昴㌲戰扡收攸攵扡㘶㍡㐷搷㥦㜴搳扦〷㡣扣㘸㔴㜹㙣扦㈹㍦㜹㉦ㅥ戵㜱捥ㅤ㌷㝣昰摡㈵愳搴搵愸㤹敦攲㘸㉣㥤愳㔱㡢攱晣㤹〶摦㜵搰㈴㡥㕥㘲㍡㝡ㄳ昲攲㘸挴敥攸㘵㜴㜴つ㔸㕤㜳昴ㄶ㕤㌳㥤愳㘹㉦ㅡ㜷愲㘶扥㡢愳昳搲㌹ㅡ戶ㄸ捥㥦㘳昰慤㠳㈶㜱㜴戵改攸㝤挸㡢愳つ㜶㐷慦愱愳ㅢ挰敡㥡愳て攸㥡改ㅣ㑤㍢㐶ㅦ㐳捤㝣ㄷ㐷敢搲㌹㝡㥣挵㜰晥散㠲敦㜷搰㈴㡥摥㘴㍡扡ㄹ㜹㜱昴ㄸ扢愳㙢攸攸㔶戰扡收攸敦㜵捤㜴㡥㍥敤ㅦ昰挴㐳㙦㡤慣摣晡敥〱㘷㕦㜷㐵㘵攵㉤㜷㡥扦㝢㙥攵攸㑡昵㉣㙡收扢㌸㍡㍢㥤愳戳㉣㠶昳攷ㄵ㝣㉦㐰㤳㌸㝡㠷改攸㌶攴挵搱ㄹ㜶㐷敦愲愳摢挱敡㥡愳㝦搲㌵搳㌹ち㔷㌲㌲愶慤慡摣㌶㘲㘴扦捦昱㝦挳ㄳ㙢晦攳㜹㝤㜵愵晡㌳㙡收扢㌸㕡㤳捥搱愹ㄶ挳昹㌳ち扥户愱㐹ㅣ扤捦㜴昴㍤攴挵搱挹㜶㐷㌷搰搱て挰敡㥡愳ㅦ敡㥡ㅤ㍡㝡摣㈳愹㤷㤷㑦㔰㌳摦挵搱昱改ㅣㅤ㘷㌱㔲㝥㉥攱㜳㘸敡散攷ㄲ昸〵㠶㔰戳㍣㍢㠸摦攸挸〹㌳㕥扥㝢搸㉣收愲戸㍣㌵㈶㈲摦㔷攸㠱㈷㥢挷ㄷ㠴攲㤳昱㄰㝦㍣捦扣戶戱挹ち挸挷挳晤昹つ㝡晤散㙣㐳㜲慣散〹搷挴昱㌰敤㙥攱㠹捤㜸㉥㑡㐳㙥搳戴㘰〲㍦㠹ㄹ晤㌵㐴敥攰ㅢ㈴搹扣㙢挵晤㙥ㄶ㥥㌹㥣改晡攵㡤攷挱㜶㍥㑢挰ㄶ戳搴㡥㠷㝥㌶㐶㈶ㅦ㠸摥戵戸ㅤ捦愳攸㙡昶㙦ㅥ㌵搸ㅥ昳㥦慤挶攰㌴㥢㜱昹愷㘴晣㈴敤㐶㐰㡥昱㌸敡㜸㌶㠲㘴攱㍢て㜲ㅢて攲㌵㝥㠷ㄲ昹㈲㡦㤰㡣ㅣ敥㍤㌸ㅤ攴㔷㙡挶ㄱ㠱㥣㐵㡤つ㠹昹㥥昹愱挶㜹昳ㄳ昸敡㑣㜷㝡慤て挵愵㝥昶㈴捦愶づ㥢㜷㤸㙢昳㌶戳ㅤ㙣㕥㝢搳戶㈶㌷㑤㜱户㠰捤搳㠷晡㐹ㅢ㝣慡㐳㠳攵慥〶㥦㑥㌵昸㡣挳愰㐲㍥挹㈰㤷扥挵挳攷㤰㐸㝦〲〲慥〶㕦㐰ㅤ捦㡢㈰挹㈷攰㈵㤴搸㑥㠰攲ち㝡㤲㔱㉥㐳㡢搱㙤㐸愴㌷㍡摣搵攸㜶㙡㑦㠶昵㔵ㄶ昱㔱攰收ㄹ㔷㕣挹㑥㌲挸攵㘰㌱昸㍡ㄲ改つ敥敢㙡昰㑤㙡㑦㌶昸ㄶ㡢㙣〶戹愲㥣㘴㤰换戲㘲昰㙤㈴搲ㅢ捣㜳㌵昸づ戵ㄳ搶昶㡥昳ㅥ㡢㙣〶〷㈳㥦㘴㤰换愳㘲昰〳㈴搲ㅢㅣ攸㙡昰㈳㙡㑦昶昰㙦㉣戲ㄹ㍣〰昹㈴㠳㕣愶ㄴ㠳ㅦ㈳㤱摥㘰㍦㔷㠳㥦㔲㝢戲挱捦㔹㘴㌳挸㤵捥㈴㠳㕣㉥ㄴ㠳㕦㈰㤱摥㘰㉦㔷㠳㕦㔱㝢戲挱㙦㔸㘴㌳挸ㄵ挷㈴㠳愳㔰㈰〶晦㠵㐴㝡㠳戹慥〶扦愵昶㘴㠳摦戳挸㘶戰ち昹㈴㠳攳㔱㈰〶㝦㐰㈲扤挱㑣㔷㠳㍦㔱㝢㜲愷㔱㠸㈵戵ㅢ㥣攸㌴㔸愳つ㘶㐱㌲扤挱晦晣摢㙤昶捤愱昶㘴て扢㌹っㅥ攱㌴㌸㕢ㅢ㌴㍡㌴昸㑦㔷㠳摤㔳つ昶㜴ㄸ㍣搲㘱搰㔷㠷〲戹摦改㑤㐹ㅦ㐹ㅦ㄰慦㥡〳㠶摣昸㝣〶㕢摣敢攳㜷挸昰㘸㝢晣㈸慢挵昸搴㘲昴㈱㈳㌳㑢搵㠳㈱㘷愷ㅦㄴ昴挶㙦愶㠴敡昱㘴愵㍣昹㘲㘳㜳愶晡㔸户昹愸搱㝢戵㕦愲㜶愵㐵慥昰㈸戹摣昲昲㌴㠰㐵戶㙥㄰㠲㕥㜶㠳摡㔵㡦㔴晥㔰㜴㙣㤵㕡愰つつ㠴㘴晡戳昲㠱㌶㤸㘱扦㈶敥㐹敤挹㘷㘵㤰挳㘰㤳㘵㄰㝥挹愱㥡戵挱扣づつ扥敤㙡㜰㐸慡挱愱づ㠳㉤㑥㠳㈷㙡㠳晢㜶㘸昰㜵㔷㠳晢㔳㝢㜲㐷㍦搰㘱昰㈴愷挱搳戵挱攱ㅤㅡ摣收㙡戰㠰摡㤳㈱㉤㜴ㄸ㍣搳㘹昰㝣㙤㌰搰愱挱攷㕣つㄶ愷ㅡ㉣㜵ㄸ㕣改㌴㜸㠹㌶㔸摥愱挱愷㕣つ㡥㐸㌵㜸愸挳攰㘵㑥㠳慢戵挱挳㍡㌴戸挹搵㘰㈵戵㈷㥦挳搱づ㠳搷㌸つ摥愴つ㡥改搰攰愳慥〶挷㔱㝢昲㌹㥣攰㌰戸挶㘹昰づ㙤㜰㔲㠷〶㌷戸ㅡ㥣㥣㙡㜰慡挳攰㕤㑥㠳昷㘹㠳搳㍡㌴戸捥搵攰昴㔴㠳㌳ㅣ〶㌷㌸っ收㍣㡥㠲㥦㝤㠷捦㘵昲㉥〶慤捦㐲㐳搴敦㘰㑣㤶摡㘷㌳〷㘵昲摥㡣㔲㌶挳昸つ㑢户㙡㤹㈳敤㌲㑦㙢㤹愳㔸晡㡣㤶㌹摡㉥昳㠲㤶㌹㠶愵㉦㘹㤹㘳敤㌲摢戵捣㜱㉣㝤㔵换搴搹㘵㜸戳㈷敤㤹挳搲户戴㑣搰㉥挳晢㌳㤱㤹换搲昷戴㑣扤㕤㠶户㔴㈲搳挰㔲摥㑤㠹敦㈱扢っ敦㠲㐴㈶捣㔲摥〰㠹捣㍣扢っ㙦㕣㐴㘶㍥㑢扦搱㌲㡤㜶ㄹ摥㙢㠸捣昱㉣攵㙤㠶攸㔹㘰㤷攱敤㠱挸㐴㔸捡㍢〳㤱㘹戲换昰㡡㉥㌲㔱㤶昲㘲㉥㌲㌱扢っ㉦挲㈲戳㤰愵扣晥㡡捣〹㜶ㄹ㕥㙢攵摡㝡〱㝡㉡慦慤㠷攲㙣攷㘶㝡ㄴ慦扦挲㔸㘹㌱㐶ち㐳㈹㕥㤳㠵戱挲㘲㡣〲挳㘸愱㔲㕥㐱挵㘰㉢㜳扣㜸㡡挱㐵㐸昰㤲捡户攲㐵㑦㘴ㄶ㤳捤敢㥤挸㉣戱ㄲ捣㈸㕥愷㐴㘶㈹㑢㜹㠹ㄲ㤹ㄳ敤㌲扣戴㠸捣㌲㤶昲慡㈲㌲㈷搹㘵㜸㌵㄰㤹㤳㔹捡ぢ㠱挸㉣户换㜰〲ㄷ㤹㔳㔸捡戹㕢㘴㑥戵换㜰捥ㄵ㤹搳㔸捡改㔶㘴㑥户换㜰㥡ㄴ㤹㌳㔸捡ㄹ㔲㘴捥戴换㜰㘶ㄳ㤹戳㔸捡㐹㑤㘴捥戶换㜰㌲ㄲ㤹㜳㔸捡㜹㐸㘴捥戵换㜰晥㄰㤹昳㔸捡愹㐳㘴捥户换挸㌸收㤹㔹㠱㔲㝤昸㌸㥥攵ㅥ㙢㈵ㄲ搸昹㤲㤱㥣㈲挵ㄱ㉤㔲ㄷ㥡㔲㌲㤶㔳愴㌸愶㐵敡户愶㤴㡣㘶㑡㔵搹㍥㈵晢㌸慡㐵敡ㄲ㔳㑡挶㜳㡡㉥㡥㙢㤱扡捣㤴㤲ㄱ㥤㈲挵㤱㉤㔲㔷㤸㔲㌲愶㔳㉣㜲㙣㡢搴㉡㔳㑡㐶㜵㡡㉥㡥㙥㤱㕡㙤㑡挹戸㑥㤱攲昸ㄶ愹㙢㑣㈹ㄹ搹㈹㔲ㅣ攱㈲㜵㥤㈹㈵㘳㍢㐵㡡㘳㕣愴㙥㌰愵㘴㜴㔳㉡〹㉦㡥㜲㤱扡挹㤴㤲昱㥤愲㡢攳㕣愴搶㤸㔲㌲挲㔳愴㌸搲㐵敡㔶㤱敡捤㐱㍡ㅢ㔲㤹㡢㔵晤㥣㠶㌹㜳晥摤㍢㍢㙦㘰昶㙦㉡㝢慣摡昱挷㜷㉦㝥攵㤸㤱ㅦ晤攷敡慢㕦㜹晦攲㘷晦昳搸摣㤱㑦摤㜸攳㤶㐹搷㍤晢㙥摦昰昵㤹て晣㝢昲昵换晣ぢ㤶㥤㄰㥥㜹攰昸㘵㐷ㅥ㝦㠴㝦㕡㥦㘱㔹㔹摤扡敤户换ㅦ〶散敦㍢攵㠴㠷搴愶搷㜷㡢㉡ㄹ昷㙣挶㙤戰挴㍥㌹ㄸ㙦ㅦ挷扦㌴㘳㉤ㄲ挶敤㈰㍤㌳㤵っ㝦㡡㈶昵㑦㑥〳㈲㝡㈷愵戲㤴㑣〰㈹㔲㥣〸㐴敡㙥㔳㑡愶〰㑡㈵㈱挹愹㐰愴敥㌱愵㘴ㄲ㐸搱挵挹㐰愴搶㥢㔲㌲つ愴㐸㜱㍡㄰愹晢㑤㈹㤹〸㔲愴㌸㈱㠸搴〳愶㤴㑣〵㈹敤攲㤴㈰㔲て㤹㔲㌲ㄹ愴攸攲愴㈰㔲㡦㤸㔲㌲ㅤ愴㐸㜱㕡㄰愹挷㑣㈹㤹㄰㔲愴㌸㌱㠸搴㐶㤱昲㘹挸ㄵ㘷〱㤹换慢慣戹㝣㌴敡昲㤳ㄵ〷扥㌰㉡ㅤっ㡥㜵㘱㡣㜲㌰㌸扣㠵㜱㤸㠳挱ㄱ㉤㡣㤱づ〶〷戱㌰づ㜵㌰㌸㙥㠵㜱㠸㠳挱愱㉡㡣ㄱづ〶㐷愷㌰㉡ㅣっづ㐸㘱㤴㍢ㄸㅣ㠳挲㈸㜳㌰㌸散㠴㔱敡㘰㜰愴〹愳挴挱攰攰ㄲ㐶㜱㌲挳挷㐱㈰戰㍦㠷〴㍡㌳扢扦〸〶㤲〵ㄵ㠷㠴㌰晣ㄶ㠳扦㕡㙢扣㠸㔲挵㜱㈰慣㠳ㅤ㜵搸昵㠵㔱攰㘰戰户ぢ攳㈰〷㠳ㅤ㕣ㄸ挳ㅤっ昶㘹㘱っ㜳㌰搸㡤㠵㜱愰㠳挱㥥㉢㡣〳ㅣっ㜶㔶㘱散敦㘰戰㝦ち㘳㍦〷㠳㕤㔲ㄸ晢㈶㌳㜲〸㕡〷㍦昱摢扥愴㥤㑢戰㥡昸㜸㜱㉥㙥㝢㥢挶㐶㕢㥡攴㔱㍢㥥㈶晥捣㙡戴㡦昵㘸攸㘱㙤㌲㝤摢㑡摡㘴㝢戵ㄵ㐹㥤摤捤ㅦ挹っ捥㡤㠴㈸㌲慣㕤㘹㝦㈷㐷攴㜱㥡㜹愶㌳㠶愴㡦敡搷つ㘴㥣㝤慥晡搹㠲戹㡡ㄵ㡣㌷㠱〶て搵㥥㤲慣㘲㉦㤱㝢㠱㍦㈳㤱㐳戱㥦愱㥡㔳㜳ㄷ㍦ㅦ扣〵ぢ㡡戶攴㤶㐳㑦戸戸㘳挵ㅤ戸㉥㝤ㅢ〹㝤昸㜴愶晢晦〳改㤶㔱晥 | D33: 㜸〱敤㝤㜹㝣㔴搵昹晥㥣㉣㐳敥戰つ㉡㉡愸ㄸ㤰愸〸挶㑣昶愸挸㠴戰ㄳㄶ〹㘰㕤挳㤰㑣㘰㈰㌳㠳㤹〹㡢愲戸愱㐵愱㔶㐰慢愲攲㠶㑡㕤㕢户搶㠵慡㐸摤㔰㕢愹㕡户㡡扢搶扤搵戶㙥昵昷㍣敦扤㈷戹㜳攷捥㐴昲昵晢昹昹挷昷㈶㜹㜳捥㜹摦昳扥攷㜹敥㝥敥㍢㜷㍣捡攳昱㝣㡦㠵晦戹攴戱戰㙦挳戲㐴㌲ㅣ㉤慥㡢户戶㠶㥢㤲㤱㜸㉣㔱㕣摢搶ㄶ㕡㔶ㅦ㐹㈴㜳㘱攰㙤㡣㐰㥦挸㙦㑣㐴㑥〹ㄷ㌴㉥づ户㈵㘰㤴敦昱ㄴㄴㄸ㌹搰て戰晥晣扡㘲戰㤷㤱㐷〱㉢㡦攱愵攸㐱㔱㐰㘱㔰昸㈸㝡㔲昴愲攸㑤搱㠷愲㉦㠵㥦愲ㅦ挵㙥ㄴ扢㔳散㐱搱㥦㘲㑦㡡扤㈸昶愶㘰㝣㘳㈰挵㍥㄰扤昶㠵㤸㔹㌷㝡摡摣〵㐰搳㤰㡣户㠵㐷ㄴ捥㌶挷㍣㌲㄰㈸づㄴ㤷㤵〷㙡㡡㑢㐶ㄴ搶戵户㈶摢摢挲㈳㘳攱昶㘴㕢愸㜵㐴攱昴昶戹慤㤱愶挹攱㘵㌳攳ぢ挳戱㤱攱戹㈵㘵㜳㐳攵搵㠱昲㡡㡡㤶㥡㥡敡㕥晢挱昳搴扡搱搳摢挲㉤㠹ㅦ换攷㈰晡㥣㔶㌷扡㜸㙡㌸昹㘳昹摣ㅦ㍥攱㜲㑣㍣ㅡ㡡挴㝥㈴愷昹㕣愷ㄵ㘳挲㑤ㄱ慥晣㜰戸㉤ㄲ㥢㔷㡣㘱愷㄰㡤㕡㔵㜱㙤㈲搱ㅥ㕤挴敤愸㉥摣摡㍡㈳摣㈲㉢㍤㍡㈶㤱㥣ㅥ㙡㡢㈶㝡㐵挹㕦戸㉤ㅣ㙢ち㈷晡㐴挷㉥㙤ち户㕡㠶㠹㠲攸散㔰摢搴㔰㌴㥣挷㐲摦愸戹づ㈷㌶㠷㘳挹㐸㜲㔹敦攸慣㐴㜸㐶㈸㌶㉦㑣㤳晣攸昸昶㐸戳捡换挳慦㈷昷㈰户㤱挹㡡挲㜸愲㜵昳㐳㙤㐹愹㜱ㄵ〶摣㙣㙤㥢㡢愰㐸ㄹㄷ㌷愹㐲㐷㉦慥戳㠶㐸㜴㜲戸㉤ㄶ㙥㘵㄰慥挹攱づ㈳㈱挸㕣てㅤ㑣㘹㌸㕣㑢慡愷戵昳ㄱぢ愳㜸ぢ改㘵㘶㕢〴㌰摢㕢㐳㙤㈳愶㐴㘲㈳㑢㑢㑡㑡㐶搴㐷ㄶ㠶㕢㈳攱㐴搲慣㑥〹㉤ㅤ㔹ち㠵㌱ㄸㅤ㡣㈱散㝡〰挴扥㌳挳慤攱㠵昱㘸㝢㉣戲㌰昴攸㥡搸搶㕢ぢㄳ慤敤摢戶捣㕤㔶㌸㙢戲㌱㤴戶㐵㄰㉡敦㘵ㅣ〶散挱戹㉢收㌴㠶㜲ㅡ攷收㌴㌶攵㌴㌶攷㌴㠶㜳ㅡ㕢㜲ㅡ攷攵㌴捥捦㘹㡣攴㌴㉥挸㘹㕣〸ㅢ扤ㄴ昴攸㤱㘳㉤㡦㕣扤㘵敦愱㜳摦ㅢ戳攵戱攵挳敦晦敡㤸扤ㄴ昷㝣㌹㜰ㅣ㠴㠲ㄳ㑣〰㠳戶㠱㤱㉡挱〴捡㑡㑢㡣㠳搱挱ㄸ〶攱㍤〴挲㐷㌰㉤昱ㄸ㠷㍥㥣㥡ㄱ㄰㑡敤挰搰㌹晣㘹攷㡤㌰搶晤㝡晤戸晢㑦扤扣㙤攷敡搳ㅥ㔶㍣搸㐸摣㘲ㄴ㥣㜱㉢㔲㐹㤴㉡攳㔶愰㘴ㅣ㐶敦㈵㄰摥〰挴晥搳ㄲ挹㔰㤲摣戵㐴㘲愱㤸㐹㘳㙣敢㌵ぢ㕢㐳捤挲㘳㈹捤换㈰㤴摡㙥つ㘶挷㡣㥤㤷㥣㍢攱㤹㈹户㤴㈷㙦敡晦挶㠶扦㉢ㅥ昴㘴㌰ㄵ㈸ㅣ改㔸愳㠱㐰㔹戵㥤〴㔴㡢〳㘵㈳㠴㠷搲㡡㐰㜱㑤㜹ㄹ㠶㙢㉥愵㐶㈵挳㔵㐱㜸慢㈱〶㡤〹㙤晢㜹攱㈹㠵戱㜰㌴扥㌸㤲㡣㈷㤲㤱挲㠳攷戶㌷挷ㄷ㉦ㅢ㐶愶㙡㘸㝤㌸㠴㔲摢慣挱㜹㕥慣㡥摤昳昱㌱㤳㔷㡤㥢㌳昹昱㔱㥦扤慥㜸㌰㤶挱ㅤ㠹㐲戱㜳㜰㘵愰挴㍥扡づ慥〲㤵㈴㙢㈴〳ㅣ〵攱ㅤ〵搱扦づ摢㘴㝣㌱搹戲㔳ㄴ愴㔱㉤㠴㔲㕢慣㔱昸㕡昶㕢戴㜶㝤攱挴〷㝤愵㌵㐵愷搵搵㉡ㅥㄸ㘴ㄴ㜵㈸捣㜴㡣愲戴愶戸扣愶っ㕢㐵㜹㐵㘵愰愲扣愶愴捣㌶愴戲搲攲慡慡㤲㐰㜹㔵愰ち㠳慤㈸慦㄰敡捡㉡㡢㑢搰㔴ㄹ愸慥㈹愹慥愸愸愹愹㌴挶㜰ㄸ㘳㈱扣攳㔸慡ぢ挷㐲㠵㌳㈳搳㑡㡤昱慣㑥㠰㔰敡㕥㙢㝣㜷㤷慤㝡攱戰挷昲挶㙥㜸㌹㍡㜱㝥昳ㄹ㈷㉡㥥愸㘴㝣㤳㔰㌸搸㌱扥敡ㄴ㡥㔸攳摡慢慥㉥㌱㈶搳㜵㍤㠴㜷ち㐴捦㠹戱㈴㡦ㄱ㐹慥㥢愹㔴㑤㠳㔰敡づ㉢敡戵㝦扢晡戹攳ㅥ㍥㌶昸晢㠷㉥散㌱攵挶挰ㄶ挵㌳愳㐴㍤ㅡ〵攷㔶捣捤挲捥〳慢㡣㕢〶㠵㌱㠳摥ㅢ㈰扣㌳㈱昶慤㙤㙦㡥㈴ぢ㐳㠵㕢敦㝢㜴㑤㔸㌶㘷摢愱㘰ㄶ㙤㘷㐳㈸戵搹ㅡ挹㤴愱ㅦ㍣戲㙥搰㠰㠹㔷扦攴㕢扤㘰搸挰て昳㝢㐲㕤收㜶㐴㜳ㅥ㉣挷攱㈴摢ㄴ㑡㈴慤攳㌸户慥ㅦ昷㌰摦昵㔱㝥㕣㕢搳晦晥㔱ㅥ㐱㝥㤴愳扣昱㌳戲㝦㉣㠴昷㌸〸摦愳慢ㅢ㈶ㄴ㑥㥦挸㉤攴㜸㙡㑥㠰㔰敡㍡㙢扤晣扣晤换㥢捦㌸敦摥挹㕢㝥搳攷戵昶㐳敢〷㈹㕥㌱挹ㄶ㜲ㄲち捥扤㔷づㅣ㡥㑤愴㜳ㅢ㈹㌱ㅡㄹ㘰づ㠴㌷〴㜱挰搴慤搷㉣〸㐷㘳㕢㌷ㄷ㥥ㄲ㉡挴㘹戲㜹㐹愸㉤㡣㡤㈶ㄱ㙦㐹㑡ㄱ㘳㥡换㉥㑤㄰㑡㕤㘱㡤改挳㠲㔹戵㈷慡愷敡㌷搶っ㉡㝢敤搰慡扦㈹㕥挰挹㤸挲㈸㡣㜴散㉢㈵挵㠱搲昲㔲摢愰搰㠰〳㈰㌷㕣㤴㉡〲搸㝢㍡㤷㔲愳㠵昱收㐱㜸攷㐳っ㤸搶扣㌸㡥攳敥㈹愱攸愳ㅢㄲ挹㔸㘸㜱㈸㠹昳〲挹㡡搰㜰〱㠴㔲ㄷ㕢〳㝢戲捦慡㙦慥散㝦挱挴搵㤳慥晦敡戰愷扦ㅣ慤㜸㔱㈹〳㙢㐵㘱扣㘳㘰㠱㤲昲捡敡㙡晢㤱挵㙡㈹慥㉥㉦慦慣攱㠱㉦㈰挳っ㘰㤴ㄵ㔵愵挵愵愵㌵㠱捡昲ち㈳捡挸㌱〸㙦ㅣ㘲昷㈹愷攰昰ぢづ敤㐷挰㐵㌴㌹ㄹ㐲愹㕦㔸㠳㝢㈸昴捦ㅤ㤱㠳挳攳㙥㕤ㄶ㝡晥昴ㅢ㉡㑥㔶扣搸㤵挱㈵㔰㘸㜰っ慥㉣㔰㕣㔵㔲ㄱ挰㈱づ〷扦捡捡㡡搲㜲ㅢ㠳㘵ㄵㄸ㑢ㄵ㡥㜳愵ㅣ㕡㜵㔹愵㌹㑥㥣㐷慡㉡㑡㉡㙢搰愳戴戲慡愴搴㐸㜲ㄴ敤㄰摥挵㄰〵㜲〰㍣㉥㌶捤㔸挲昶愵㄰㑡㥤㘷㡤敥捣扡愶戲㡦扦摢㙢昲收㘱㑢ㄶㅥ晤搸㑤㝢㈹㕥㠵换攸㑥㐱挱㜹㝣慥㈹㈹慥愸㉥慦慡挰挱户扣扡愶愶㌴攵㝣㔶㔲㔲㕣㔹㕥㔳㔵㕡㕤㕡㕤㔶㕡ㅡ挰扡㤷㔳㕢愰愴戸ち〷敤㤲〰㤶㡡昲戲㡡㑡攳㔴づ㘳㌹㠴昷㌴㠸ㅥ戳攳捤㈱慥搸搳搹扣〲㐲愹㌳慣搱敤㍦晤戴㤵㈷っ㙣ㅥ扦㝥昱ㄷ挷㔶扣㝤晥戳㡡户〷㌲扡㌳㔱㤸敥攰慥ㄴ㘷㠲〰㈲㔷㔷㔶㔵摢㘹挳ㅡ慣慣㉥挱挶㔸㔳㔵㈹㥢㥣㌹戲㔲㥣㙢捡慢挱㔸㘹㔵㤹戴㤷ㅢ㘷㜱〸㘷㐳㜸捦㠱攸㍤ㄶ㤷㔵挹㙤㤷攱㝡㠰攳㕢㐹攵戹㄰㑡㉤戳挶㜷㔲改㌳㉢慥慢搸㌰攱收㤷晡敦戱㜴㐶攳㜰挵㍢ㄷㄹ摦捦㔱㜰敥愵扣愴戳ㅦ挸捤㍡㐹攲㐵㕤㠹戱㡡〱捥㠷昰㕥〰戱晢昴戶慤搷挸㈹搶㜶〴㕦㑤㤳㌵㄰㑡戵㔹㘳昸㘷㘸搵扡㥥㙢〶搶摥㜸搱昵㥢ㅦ昸㙤㡦〵㡡㌷㑥㌲㠶ぢ㔱㜰㡥愱挶㌱〶戳捥㌱㘰昳挱ㄸ㝥挹〰ㄷ㐱㜸搷㐲散㌹㍤扥㈰戲敤㥡攴愳ㅢ㜸慡㌷慦㌷㐸挵㍡㕡慤㠷㔰㙡愱㌵㡣晤扥㔹扤昷㙤㑢ㄶ㑦㝣昰捥搶搹敡搷㕢收㉢摥扡挹㌰㉥㐱挱㜹㑡㉢㑦扤摡攸戸搸㤰ぢ戳㕦搱晢愵㄰摥换㈰〶㑣〹戵㉤っ㈷㜱敢㔱ㄸ㉡㙣挶敤㘹㕢㘴㙥㝢㤳ㅣち㉥愷攱〶〸愵㥡慤㘱㥣㌰攳㥤㑦㥦搹ㅡ㥢㝣搳搱㙦昶㍦扥㜰戸㐷昱收㔱㠶㜱㈵ち㌳㥣㕢㑣㘹㜱㈰㔰㔳㡤㙢㡥㜲散㔲戸㠶戰ㅦㄵ㑡换㡢㉢慡慡㉡〳㈵㘵搵㈵㠱搲㥡㤲ㅡ㜳㙦㉢慤㉡㉥㈹慢㈸挳㌶ㅤ挰㕤㘲愹㜱ㄵ〷戱ㄱ挲㝢㌵㐴㙦搹搹ち敢㈳攳挲搳愷㤵ㅢ搷㔰㜹㉤㠴㔲㈷㕡㈳㙣㥢㜶挸散挲㜱挵ㄳ敥慣晣昷㝤晥㑢㍦ㅦ慦昶㠴㕡㐶㜸㍤ち攳㥣㈳㉣愹戴ㅤ〰㑡㑢㉡㡢戱搷㘱㔵㔵㤷㤶㘰㑦挷搱挱摣㝣慡㡡㉢戱摤㔳㔱㕡㔵㔵㕡㕥㘵㙣㘲攰ㅢ㈰扣㌷㐲昴㥢摥ㄶ挷㘱ち〷㝤ㅣ敥㕢攵㜲昶㈶ㅡ㙣㠶㔰㙡戶㌵戲㔵〳㥦㜸昹㡣㥥㑢㙢㌷昷㝣攳㡤㥤㕦㝣昵戱攲敤戶㡣散㘶ㄴ㘶㌹㐷ㄶ挰㡥㕥㕣㔹㔲ち㝡㉡㑡慢挱㠹㝤愰攵愵ㄵ攵挵㈵㈵愵㌸㙥㤶㤴〵〲攵㌵收㐰㉢㉢慢㜰㠹㔷㐲㌶㉢挰㜹㘵㤹㜱ぢ挷㜱㉢㠴昷㌶㠸㕥戳户㍥㠸敢昰挵㜳㘵㡦扢㥤扡㍢㈰㤴㥡㘶㡤㜱昵昲㔹㕦㑥㕦扥㝤晣㙦ㄶ㍣昱戳挸㥥㝢㙥㔱㝢㐳㉤㘳晣㉤ち捥慤㕤㑥㌲昶㘱挹搶摦戹挷摤挹〰㜷㐱㜸敦㠶搸㙢敢攵捤㙤戸㙤ち攱戴戳敤戲慤户㥥ㄲ收㔶㡦捤晤ㅥ㥡摤ぢ愱搴〴㙢ㅣ慦㝤晢攵㑤昷㍣扤㘳搲㥤昷㙥戸㌳戱攸㠸㔱㙡〰搴㌲㡥摦愳攰㍣㙥攲扡戶戲愶扡慡慡扡ち搷戴㠱慡㉡晢㘶㠶换㕡捣㌳㔴攲攲扦〲愷㥦昲㐰㜹愵㔰㠵敢摡搲㥡敡㡡ㄲ㕣敢搶搴〴㑡㜰㘵㙢摣挷㘱摣て攱㝤〰㈲晦㤸挹ㅣ摢㠳㙣摣〲愱㔴慤收愸㈶昰晥昸搳摥ㄸ昳攰㙦㘲㤳㉦摢㜸晣〲㌵㄰㙡ㄹ摢㐳㈸㌸㜷挵〰㌸戱㔱㈴㔵㌲ㄴ㐰挹㜸ㄸㅤ㡣㐷㈰扣㕢㈱昶攸㌸㈴戵㠵㜹愷㙡敥㠵㡦搲㘶ㅢ㠴㔲㠷㕢㈳㤸㌵收㤱㜷捦敢㜱搶搴㕦晤昲挱㐹㌵㈵戵㐷愹㝤愰㤶ㄱ㍣㠶㠲㜳〴㔹て〶㡦搳晢ㄳ㄰摥㈷㈱晡搷㠷收挶摢㐲㤸攰攱慡㐹攲㉥㐴㌶收愷㘸戴ㅤ㐲愹㌲㙢〸㠳摦晣㘶攵收㠶挲晡换㝢昵扤攳㠵㑤㝤捦敦昵っ搴㐷㕢㜷摥㘳摡㐲㑢㜰㐰改㥣㈶挱愹㠳㍦㕤捦て㘱㝡愸愵愲愵慡㈵㄰㘸慥㈸〹㤵㠵昲〷挳敤て㥤㠸攰戹戵㔷换㌱㤱㔸㜳㝣㠹捣㑣散㍢㍡㤴〸㜷㕥挲づ户㜴愳攳敤戱收挴㍥敥捡〶摣愶㠶〷㍡㜵㥤㑥搲扡㌵㘰摥㈶㥣㤰㜸㠳㥣摤㘶㠷㕡摢挳戵㑢㈳愶㝡㍦㠷ㅡ戳㌶昱戹㤹戵攳摡挲㈷㜷㘸搳㐶㔴㡢㘹挵挵攲㍢つ愵愹㌲挷㔵㔸㌷㍦㥥〸挷㘴㜸挳愳搳㈳㑤ぢ挳㙤つ戸搴㙢㑡㠶㥢〵㙡㝦慡慣愹愳攱搳㘲〰㡡挹愰收㈱昶搶㤶戱㑢㤳攱㔸㜳戸ㄹ攳㕤ㄴ㙥㑢㉥㥢ㄹ㥡摢ㅡ摥㌳挵挴㡣〹挵㠰㤴收㜱昱愶昶㐴㕤㍣㤶㙣㡢户愶㙡㙡㥢ㄷ㠷㌰㕤搵㍣㈵摥ㅣ挶㙣㔳ㅥㄷ㡦昲攴收㉡攵㌹挴敤〶㠹㝥ㄳ挵戲㈲㙣慢㜸㍦慣昳扤㔳㌷扢攲ㄹ㐰〷ㄴ慤㘱㙥㤳㌹㐳扢㜰㈶㝥改㘶㔸㘶㐳ㅢ㈶捥攰搲晡攰捣搶㌲挶㡥㌵昷扦㙢㥣㤳戳扢㠵㝥散㘲㑣改㑤〸挵㥡㕢挳㙤㔹攷㥦ㄵ㐷㘴㍣ぢ㤱㕦㠲扤㌹㈳㝢㜹戰㔰㑢搵戲晣㈵㤱收攴㝣敦晣㜰㘴摥㝣㕥晡㘲㡥扡愰㠰搴愶㉤挶㥦搱㘴㍣㐷戱〳挲攷昳㜸晦㐲㈳慦捦㜸摥慣攷て挱晦㕤㥦㉣捣㐱㉦㐳㈶㈷㌱㤳㥣挸㡦攲收㌸㤱㥢敢㠶㜲㐲㈸㌱㍦挹捤㌳扢㤲晥㕥愰㜸ㄱ㈲㝦㈸㐴㤷㜳㤱扣慦挸攳㤴㙢敦攸㤸㜰㑢〸ㄳ摤戲㜷慢㔰㝥搴㥣㍢ㅤㄳ㑥㌴ㄹ㥣㘴㥤㠸㝤㘵愹ㄷ㈵散晣扤愲摣晡挳㑢㤳㘳㐲挹㔰㡦㈸愶㙢戱㤶っㄸつ㤷㕥㘶㠹㍤㝢㑢㥢敥敤戳㙡昰攰㤷愲捤㑢㑦㘹㌰㍤㘱挷挱晥攲挹戵㘴㜶㄰ㄸ晢㈰㠰昰㍡㌷昴搴㘹㔷捣〶㌷㡦て挷㘶㉥㕢ㄴ㑥搰扣挰㥢㤵㑡攷敥㐵㘷搳㥡收捥㑡㐶㕡ㄳ挵ㄸ改昸戶㜸晢愲ㅦ搳て㝤ㄹ㝦㠵搰㑢晥㐱搸㡡㝦㌸㈶搰攵改戱㤸敢愶戱搱㔳㐰㙦㙣㌱づ愰攰搶ち㘷摦攳㥦㉣挶慢昸攷换愶换㉦㠲挵慥㑣㔱攷挳扥㔷ㄴっ捤㙣ぢ换愴㝢㠱㔴挰㜶敦攸㌱昱戶㠵㜳攳昱㠵摣㥥晡㐸㉤㌱㍦ㅣ㑥㜲㈲扢愷㌵㜱㉦ㄳ昴㑡攵收愶㑣㌴摢㘶扣昷㠷㝦敦㑥㠸摥戵慤慤㠵摡㘳挲晢〶㥡㜲㌱愵敥㝤ㄳ㠵〱㘳ㄷ挶㘳昱㈸收戳ㅢㄷ㔷㌵㘲捡扤戱扥慥慥㜸㘹㙢㈲慡昶〳㝣捥〴㝦㔱㍥昹挲㝢㕥ㄹ㍤敥挲㈹晢慦㤹摣㜲敡㜴戵慦愵㐸㥢㥡㍥ㄸづ〷攳捦㜸〷㐲つ㠴ㄹて㉢㈸愷㉥挶㝢愸ㅢ敦㔳㝣〰㠱㠳㠳搰㡤㘳挳㠷㘶㔵つ挳㝦ㅥㅦ㡣㡦㈸㍥㠶㔰挳㈱戸㜷ㅡ㥦㐰攸㐵昵㠳㝦慥㜴㔹㜱㠷愰㌹㝤挵晤〳慤㍥㈳㡢㑥㡤㠰〵㔷㥥戱㤳㠲昴ㄸ愴㐶昵㠰㘳㔷〲扣㤶㈲㙤㡥晣㌰㜴ㄳ〲扥㘱晦㍣㤸戹ㄳ昰ㅤ㘳晣㤷㠲散搸〸攰㉥㡣慡㉡㐱戳㄰㤰㠳〶㈳ㄷ㐲㤵愲㐹〸㤰攷㡡愸㜰㔱摦晣搷㐶㐰〰㉤改〴ㄴ搰愷㤱㐵愷捡搰捦㡤㠰捦攱摣㤵㠰捦㉣㐵摡扣㝣㈵㍣つ收㈸晡㜱挸㥦挰捣㥤㠰摤愱㌶昶愰攸て㘱㈳㘰㉦戳慡慡攰㐴〸搸㥢㐶〳㈰㔴つ㥡㠴㠰㠱愸改㐵扤㘳㈷愰ㅡ捤改〴っ愲㑦㈳㡢㑥ㅤ㡥㝥㙥〴扣㤲㠹㠰㤷㉤㐵摡摣晦㐸㜸ㅡ捣㔱ㅣ挴㈱晦㌵㈳〱挳愰㌶づ愱ㄸづ㘱㈳攰㔰戳慡㡥㠲ㄳ㈱愰㤸㐶㠷㐱愸㈰㥡㠴㠰ㄲ搴昴愲㥥戵ㄳ㌰ち捤改〴㤴搳愷㤱㐵愷㙡搱捦㡤㠰㙤㤹〸㜸搴㔲愴㍤㜶ㄸ〳㑦㠳㌹㡡㤱〸慡ㅥ挹㐸挰㈸愸㡤㈰㐵㉤㠴㡤㠰㍡戳慡挶挲㠹㄰㌰㠶㐶㘳㈱搴㜸㌴〹〱攳㔰搳㡢晡扤㥤〰㜹㄰㤱㜶昰㥥㐴㥦㐶ㄶ㥤㥡〰㜷㙥〴摣㥥㠹㠰摢㉣㐵摡㜳㡤挹昰㌴ㄸ㝦㐶〳㠷㝣㑢㐶〲㘶㐱㙤捣愶㌸〶挲㐶挰戱㘶㔵搵挳㠹㄰㜰ㅣ㡤㡥㠷㔰㔳搱㈴〴㥣㠰㥡㕥搴㜵㜶〲愶愰㌹㝤ぢ㤸㐳㥦㐶ㄶ㥤㥡㠶㝥㙥〴㕣㤶㠹㠰㑢㉤㐵摡㈳㤶ㄹ昰㌴㤸愳㠸㜰挸㤷㘴㈴㘰㈱搴㐶㉢㐵ㄴ挲㐶㐰摣慣慡〶㌸ㄱ〲ㄶ搱攸㘴〸㌵ぢ㑤㐲㐰ㅢ㙡㝡㔱㙢散〴捣㐴㜳㍡〱㡢改搳挸愲㔳戳搱捦㡤㠰戳㌳ㄱ㜰㤶愵㐸㝢戲昳㌳㜸捡㜲愷㥡昲㌰㘵て搸愶摣愹昶㙡ㄹㄷ㘹挵㌳㉤戹ㄹ改摢㠲㝦㘶㔲㠰搴㝢昳〶慣㉤搴㘴㍥㙥摦愳愵づ昷㘰挸㐲㐸㉥㤳ㅢつ㌱㐹扢〷㌴㙦㤱晥敦㑥昷㈷㜷愷㉢昷戹㈹㜷扢㔹敥㈴戱搱㌸敥㜵戳ㅢ摢㌶㈲摥攴戹㕥㤷捡昶㔲っ捦愹ㅢㄹ敤㥤ㄷ搱㤲㙡搱㘱㙦摦〸㘹㕤㤲昹づ㤸ㅢ㝢晡㐶捡㑥ㄹ敦㌶㜹㐳昹㝦昷敡捥㕣㌱昳㕥㝤〵㡦㠴㘷㔰㥣㐹㜱ㄶ挵搹㄰㙡戹㜵㤸晤っ㤵晢㜳㍣㥥捤昸㝦ㄲ晥㍣挶㑡㐸攳㕣㡡昳㈰㙣㠷搹㔵愸㝡捦㘷㥢ㅣ㍤ち㜹㥦攷㔳敡㔸㜴㤲愳敥〵散戳ㅡ愲搷ㅡ㠸愹ㄳ挲慤㤸昲昹戱㔲戳昲㡦㐷㤸散㌷愹搸㜴㜶㠳搱㥥搱㠶㘵戱愶昹㤸㔷㐷㠲ㅣ敦㥤㙢㥢㤰摢㤴㔰㈱㙦戴㍥㕥搷㥥昴㐶㈷㐴昰慦㔷㜴㐶㜸㔱㌸㤴慣挳㤴ㅥ㙥捣敢昱挰㕣㙥扢㈷㌶㉦晤晦㜹㕢敥挹〳〴㡦〲㠱晡捥㕣㌹㜷㕣昳〶搹愲户㜸㑣ㅣ㜹㜲㘱㐹ㄱ㈴敤㕥㉦愶㔸㝥㠲昷摤ㅥ攳ㄷㄸ摤挶捦㝦㝤㐴搱㤵户㝦㙦晤㕦㠱ㅢㅥ㔹㡣攳〰㍡晤㈴㝣ㄱ扡昸戲改ㄴ㥦捤㜷㥣㠴扤㤷㤰㌶㙣〶收敤搸晣㑣㈷攲㜹㤶㈲敤㔱㝥㈳扣つ收㐸㉥㠷㈳ㄵ戶㜶ㄱ㌴愴㉥挶ㄵ㔰ㅢ㔷㔲㕣〵㘱摢㐵慥㌶慢㙡づ㍡挸㍥㜱つ㡤慥㠵㔰㜳搱㈴㔷㈲搷愱愶ㄷ㜵〲㘲㜴摣㡦㠶搰㥣㑥挲㡤戰昷ㄹ㔹㜴慡〹晤㍡㐸戰摤㡦捥挸㐴挰搱㤶㈲㉤㙦愰〵㥥〶㜳ㄴ㜷㈰愸㥡㤶㤱㠰摦㐲㙤摣㐹㜱ㄷ㠴㡤㠰㝢捣慡㥡〷㈷㐲挰扤㌴晡ㅤ㠴㡡愰㐹〸昸㍤㙡㝡㔱攳散〴捣㐷㜳㍡〱て搲愷㤱㐵愷ㄶ愰㥦ㅢ〱㐷㘶㈲攰〸㑢㤱㤶㥦㄰㠵愷挱ㅣ挵ㅦ㌹攴㥡㡣〴㍣づ戵昱〴挵㤳㄰㌶〲戶㥢㔵ㄵ㠳ㄳ㈱攰㘹ㅡ㍤〳愱ㄶ愱㐹〸㜸ㄶ㌵扤愸ㄲ㍢〱㜱㌴愷ㄳ戰㠳㍥㡤㉣㍡㜵㌲晡戹ㄱ㜰㘰㈶〲㡡㉣㐵㕡づ㐴ㄲ㥥〶㜳ㄴ慦㜲挸〷㘴㈴攰㙦㔰ㅢ慦㔳散㠴戰ㄱ昰愶㔹㔵敤㜰㈲〴扣㐵愳户㈱搴ㄲ㌴〹〱敦愰愶ㄷ㌵搰㑥挰㘲㌴愷ㄳ昰〱㝤ㅡ㔹㜴㙡㈹晡戹ㄱ攰捦㐴㐰㕦㑢㤱㤶㘶㜱㉡㍣つ收㈸晥挱㈱昷捥㐸挰ㄷ㔰ㅢ㕦㔲晣ぢ挲㐶挰㝦捣慡㘲ㅥ㠵㄰昰ㄵ㡤扥㠶㔰愷愳㐹〸昸〶㌵扤愸㍣㍢〱愷愱㌹㥤〰捥㔷昹㡣㉣㍡戵〲晤摣〸昸晡扢っ㔳㌲㕦㔹㡡戴㑣㡥戳攰㘹㌰㐷㔱㤰㠳㈱晦ㅢ㘶敥㔳㌲㍥愸㡤㥥ㄴ扤㈰㙣〴昴㌱慢敡㙣㌸ㄹ㐲㐷㝤㘹挴㝣㜴戵ㄲ㔵㈱愰ㅦ㙡㝡㔱㥦㈰㐶挷㐱昰ㅣ㌴愷ㄳ搰ㅦ昶㍥㈳㡢㑥㥤㡢㝥㙥〴扣㥤㠹㠰户㉣㐵㕡慡挸㉡㜸ㄲ〲〶㜱挸㙦㘴㈴愰㄰㙡㘳㌰挵㄰㡥慥㜳㔶㜲愸㔹㔵攷挳搱㄰挲㈹愲搱㠱㄰㙡㌵慡㐲挰㐱愸改㐵晤搵㑥挰〵㘸㑥㈷㘰㌸散㝤㐶ㄶ㥤㕡㠳㝥㙥〴㍣㤳㠹㠰愷㉤㐵㕡㥥捡㉦攱㐹〸㈸攷㤰㥦捡㐸㐰㈵搴㐶ㄵ㐵㌵㐷搷㐹挰攱㘶㔵㕤〴㐷㐳〸攷〸ㅡㅤ〹愱搶愱㉡〴㡣㐴㑤㉦敡ㄱ㍢〱㙢搱㥣㑥㐰㉤散㝤㐶ㄶ㥤㕡㡦㝥㙥〴晣㉥ㄳ〱昷㕡㡡戴っ㤹㕦挱㤳㄰㌰㠹㐳扥㍢㈳〱昵㔰ㅢ㔳㈸愶㜲㜴㥤〴㑣㌷慢敡㔲㌸ㅡ㐲㌸㐷搳㘸〶㠴扡ㅣ㔵㈱愰〱㌵扤愸㕢散〴㕣㠶收㜴〲㡥㠱扤捦挸愲㔳ㅢ搰捦㡤㠰㙢㌳ㄱ㜰㡤愵㐸换捤戹ち㥥㠴㠰㌹ㅣ昲挶㡣〴捣㠵摡㘸愲㘸收攸㍡〹㘸㌱慢㙡㈳ㅣつ㈱㥣㜹㌴㥡て愱慥㐱㔵〸㠸愰愶ㄷ㜵㠹㥤㠰慢搱㥣㑥㐰ㄴ昶㍥㈳㡢㑥㕤㡢㝥㙥〴慣捥㐴挰〵㤶㈲㉤昵㘷ㄳ㍣〹〱㡢㌹攴㔵ㄹ〹㔸ち戵戱㡣攲ㄴ〸ㅢ〱换捤慡扡〱㡥㠶攰捦㌸㡤㐶愷㐳愸㥢㔰ㄵ〲㔶愰愶ㄷ㜵㠶㥤㠰ㅢ搱㥣㑥挰搹戰昷ㄹ㔹㜴㙡㌳晡戹ㄱ戰㌸ㄳ〱敤㤶㈲㉤挳攸ㄶ㜸ㄲ〲㔶㜳挸㠹㡣〴晣〲㙡攳㐲㡡㕦㜲㜴㥤㕢挰㕡戳慡㙥㠵愳㈱㠴戳㡥㐶敢㈱搴敤愸ち〱ㄷ愳愶ㄷ戵挰㑥挰㙤㘸㑥㈷攰㌲搸晢㡣㉣㍡㜵〷晡戹ㄱ㌰㈷ㄳ〱㡤㤶㈲㉤㝤改㑥㜸ㄲ〲慥攵㤰㑦捣㐸挰昵㔰ㅢ㥢㈸㙥攰攸㍡〹戸挹慣慡扢攰㘸〸攱㙣愶搱慦㈱搴㍤愸ち〱㌷愳愶ㄷ㌵搳㑥〰搳㥥搲〹戸ㅤ昶㍥㈳㡢㑥摤㡢㝥㙥〴㑣捡㐴挰㐴㑢㤱㤶㌷㜵ㅦ㍣〹〱扦攳㤰挷㘷㈴攰㍥愸つ㑥㈱ㄸて㜰㜴㥤〴㙣㌱慢敡㝥㌸ㅡ㐲㌸㝦愰搱㐳㄰敡㐱㔴㠵㠰㠷㔱搳㡢㍡捡㑥〰㌳愹搲〹搸〶㝢㥦㤱㐵愷戶愰㥦ㅢ〱攵㤹〸㈸戳ㄴ慢㥤挹㔹て挳㤳㄰昰っ㠷ㅣ挸㐸挰㥦愰㌶晥㑣昱ㅣ㐷搷㐹挰㕦捣慡㝡〴㡥㠶㄰捥昳㘸㌰㕥㠰㔰㡦愲㉡〴扣㠸㥡㕥搴挱㜶〲戶愲㌹㥤㠰㔷㘰敦㌳戲攸搴㌶昴㜳㈳㘰㔰㈶〲昶戳ㄴ㘹戹㘱㡦挳㤳㄰昰㌶㠷扣㑦㐶〲摥㠵摡㜸㡦攲㝤㡥慥㤳㠰扦㥢㔵昵〴ㅣつ㈱㥣て㘹昴ㄱ㠴㝡ち㔵㈱攰㘳搴昴愲㜶戳ㄳ昰㈴㥡搳〹昸ㅣ昶㍥㈳㡢㑥㙤㐷㍦㌷〲ち㌲ㄱ搰挳㔲㌸㌳搳昲㥦㠵愷㕤挸㈸敡挹〱户捣㡥㠴㤷㜰㙡慣㑦ぢ㍥㈰㔷搷㡥㡦攳㐸扥㐶敦㤶㌱昱愹昱攴㤸㐸㘲㔱㙢㘸搹敥㉤㔶攱㤸昹攱ㄸ戲愹摡㤰㔴攵㘸㡢㉦㕡ㄴ㙥㌶㕡ㅡ攲敤㙤㑤攱㠹㘳㝥ち搹㔶挰㠷㔵㈷㠹㔶㌹ち㑢昷ㄲ㠸㍣攸㠹慤〴㡢㈷晦捦㜰攸捣〳戱捤ㅤ㜷㍥愶昰挳戰㙦㈷愳㌳㈳挹搶㜰捦ㄶ搱㑢戹愰〵㉣㈲㐵慤戹㐷换捣昹挸㡦ㄸ搳扢㘵㝣㕢愴戹㌵ㄲぢ㜳㘵攰搱〷㍦㜵㔸ㅦ㥥㠷㜴戴改昱㐴㠴㥦㠸散摤㌲戳㉤ㄴ㑢㉣㘲㘶㑤搳戲摤㔲㙡㌲ㄷ㤸摦㌲㍡ㄲ㑢㈰㡣慣㐵㤶晢戶㌴捣㡦㉦挱㠷㜳摢愳戱昱愱㐵㠹㥦挴㕡㔱㕣㉤戲挸慡㔱㌹㉡㈷㐷ㄵ攴ㄴ㜴㜷晤㜸扦挶㍥戶㔷㘷㔶㜱㈱戶搵㈴㤳扢㐹㥡挴㈹㠵捣愳㤰昵攸挹㝦づ愵㉣㡦〰昸㈰挰㑡ㄴ㘴ㄲㅣ挷㥢昲㠹㈴搷㝣慣㡥㑦㍤㜳昲摦昸〶㐳敡昵㉤挴愴昱戳㈶㜶愶㠷晥㡦㍥㐲㥣扦〳㥥㥤戳慢捥慤慦㈳ㅢ慦㍦㡣晢㤸㥢ㄱ摢戸㔵㘱敦挴搶挰㥡㜳搳昴戵㠸つ户搲㍥㥤挵㜱㐸攸敡搵㠲㑣搹㜰㉢昲搰愲愱㘴ㅦ戳挲挷㈱搱㔰㙢挲搲搵挵愳搱㄰㌷㍢㙥戲つ㑤愱搶㜰㐱㑢㙤㝢㌲㡥㑦㥦ㅡ㉤㄰戲㙤㕡㑤愱愵㘸ち㉤㤵愶㕥㉤㌳㤸㥦㉡㘵晡㡡捦ぢ戵㐵㤲昳愳㤱愶〲㔶㤸㐳晡㤳搸㕥㜱っ挹〳㤹㝡搱挷ㄳ攷散扥㌹捦㡤搵㕤㡣㈷㔹愴㡥慢ㅦ㕢㜵㡥昲攲㐷㜵㌳㝤ㄱ㐷ㅦ㌹愹ㄸ晦㠵户㝣晣挹攱㐸挶昲ㄹ愷㔹戸㝣挶挷㈶㜲㠰㔲捦愳捡㔶攳㝢㤸戲挰扦扣ㄷ㈰戲收戶昵㠰㠱慦㍥ㅥ㙡ㅥ㠷㠷慦昱戶ㅥ搶㐷摥ぢ戰㙡㜹戸㘹昳㌳摢戰づ〹慣㐸㡣㕤ㅣ㘹づ户ㄵ戰愱〱㑦㉣昲㤸愷攸㌵搷㈱㘶戳㜳㍤昹昹㍤ぢ摣㘲㑤搴扥㠶㕡㌹㕣昶㔷〶㑣㑣昳晦搱搱搵㑣攸〰㉣㌹㑤㌱改摢㔰㄰敡㐵㌴ㄲ㡦挳㈰㠷〶〸敦挹晦㉢㤴捥㜵㤳㥡昸㠷昴㐰〳㐶㜹昲㘱㜱愶㈴ㄶ㈰㝤㑦㜲ㄹ昳〵㐸㑦㕢づ愲搷㑣㍦㉣搰㥦㐰昷㌶㘰㉢て㌷晢捣㘳㉣㥦搷攰散攰挹挹挹挳慡昶㍡㥦㡡愷㠵㠵戳㘸㐳㔸㤲ㄳ搵㈰っ挱㥢㠷ㄱて收捥〲晦㡤ㄹ㍦㝥㥤㜶㔹攱昳ㄹ㕥昴昴昸搴慢㤰㥡㡥㍥㙣㌱昹敡㐱㍡ち㈰搴㍢㘸攴㠵㠱敤㌴愶摥㐳㤵愷㌲㡦㤷㙦㕢搸㤵㐳愷㝡ㅦ扤㜸昸㌴㝣㜴晥〱㑡㍣㉡㜵㙣愵扤搰摡昵㔶晡㈱㝢攰捦攸㑤㈷㔶㐵㝤㠴㠲㠶㠲愲㠶搲〷㌶㐶㕦ㅡ㝥散㙥攰愷㐱㍦ㅡ㝣〲〳慥㝥敦㙥愸昵戵搳㡡て㠲扢㤱戸〷散㐰攲㍦㙣㡥㙤㈴昶愷攳㍤改昸ㅢㄸ㌸㐹晣づ㙤㈶㠹㝢挱㘴㤷㐸晣㉦扡ち㠹㝢搳昹昷愸愵㤰㌸㄰慤㕤㤳挸敤㑥㐸摣㠷㑥攰㐳晥㤸㔰攷㐲攲扥戰㌱昶愳㘱慥扢挱㈰ㅡ散㑦〳收摦〹㠹㠵愸つ搵㈴㘶晢㔴扢ㅢ戳㐳搰ㄹ捣㌲㌹㑦て挷挶散〱㡣㌶㤴搱㤸㐸攷㘴㤶搹㜳㈶戳㐵㌰搹㈵㘶昷㐰㔷㘱昶㐰㍡㘷昲㕤ち戳〷愳戵㙢㘶㤹愴㠷㕦扣㑣㠰㑥㌴戳捣搴搳㔰搰愶㌷捦㐳㘰㘳っ愷㈱戳昸㕣っ㐶搰攰㔰ㅡ㌰戱㑦㤸㉤㐶敤〰捤㙣㤶㑦攴扢ㄱ㕢㠲扥㈰㤶㐹㝦㍡㤸㡤搸〰㠳㤵㌲ㄸㄳ昴㥣挴づ㐳㥢㐹㙣ㄹ㑣㜶㠹搸㐳搰㔵㠸㉤愷㜳㈶昵愵㄰㕢㠹搶慥㠹㍤ㄴ摤昰㡢㔹㔸㍡㐱㐱晥㤸〱愸愱愰㑤ㄳ㕢つㅢ愳㠶㠶捣づ㜴㌱㌸㥣〶㐷搰㠰〹㠳㐲散㤱愸つ搴挴搶愵扤㕢挰㡤捦愳搰〵㝣㤶摢㘲搸昸ㅣ挵ㄸ㐱挶㘰扥㥦㤳捦㔱㘸㌳昹慣㠵挹㉥昱ㄹ㐴㔷攱㜳㌴㥤搷愲㤶挲攷ㄸ戴㜶捤㘷ㅤ扡攱ㄷ改㠳㜴㠲㠲晣㌱愱搰㠵慥㜱戰㌱挶搳㤰挹㠶㉥〶ㄳ㘸㌰㤱〶捣㍦ㄴ㍥㈷愱搶慢㤳捦㔸挸㡤挱㝡ㄸ㠱挱㐹㌶慦㌶〶愷搰敢㔴㝡㘵挲愰㤳㐱㘶〹㥡っ㑥㠳挹㉥㌱㌸ㅢ㕤㠵挱改㜴捥㈴挳ㄴ〶㘷愰戵㙢〶㤹㡣㠸㕦㘴㌳搲㠹㘶㤰ㄹ㠹㉥〴捤㠴㡤㌱㡢㠶捣㔶㜴㌱㤸㑤㠳㘳㘸挰〴㐶㘱昰㘷愸昹㌵㠳晡㙤づ㙥㉣ㅥ〷㐳戰㌸挷收搹挶攲昱昴㝣〲㍤㐷㘰攰㘴㤱愹㠶㈶㡢㈷挲㘴㤷㔸㘴㠲愲戰㜸ㄲ㥤㐷㔱㑢㘱㜱づ㕡扢㘶㤱ㄹ㡤昸昵ㄸ㈱㍡搱㉣㌲慤搱㠵愴戹戰㌱㥡㘸挸㤴㐷ㄷ㠳㘶ㅡ㠴㘹挰㉣㐸㘱戱〵戵㡥换愴㡣慦愶㜰愳㜵㍥㝡㠲搶挵戶㔰㌶㕡㈳っ戵〰㈲㥦㤷搰㔹敥慤㤰愵㘱换㑦愳〷㙦换慣㔸㈴㠹摢ㅥ慥摣㜱㤱㈴㉥攰㝡戵㐰愰㈸㠹㘴〳攵㜶挸搶㘹㜸挷㔴换晥改慡㤴戹㤷㐱改㝡晢㘴捣㔰ㄷ戵㌹㑤㘳㥢㥤改捡㐸愶㙢㕣挶昸㔳㥡扦㔱㘶㜶㤱㌵㠵愳㡡㌲愷攱搹㜸攷敤昷晦㘰戶㐷戶㈱攴敤㜲戳㔱昸挱㤵㜶ㄴ㘵㑥晥㥣搱攵㈶㘲换㑡攴㕤㡢㡦ㄳ㐰㘶㕢㙦㉢敤㜵㘲㉣㠱摢㈷㥦㔵挳捤㜱ㅦ慢㌸慤㍤㤹愲〹㉤摤摤搲攰搳㉤搳㘲㤸搲㘸挲晢㌵㝥㈲昷挳挰㘶㑥摤挸慤㙤㌷愷搵攰㠴㡢敤㉥ㄶㄳ愵㌱㡢敢㌳挱昵慥㈴㜵昶㠵愷摥愴扢㈳搷戳㠰戵㈹攱㔰㑣搶㐲㐳戲㜹㑣㜸戱捣㜱㑥て㘳㠲ㄲ敦〴㙢つ敦㉥ㅤ㍡慡㜲敦㘷戴搴捥㑤㘰扥㉣挹㠹㄰慢㈴㍢扡搱㌲㈳摣ㅡ攲㐷㔱㌱㙦㘱㤵愶㌷㈵㤱挲摣攱㠰ㅦ㌳晤改慣㈱㌰㤲㘷慤㈵㈵敢挹㥢攵昸㤶ち㠲晢㔰㌷搷㉡搶㕢㡢㉣㥦㡣㔲㤷㕦挶㘵昳㈸㡦㉥㔸戳愸㑣敢捣㌲晤㠶㘳慤㍤〳㤷㝢搲敥㍡㌱摣㍣挲挹挱慢㤷㙥攳ㅣ㕤㙦捥愷戶昱攵づ㝣㡤㔰㕦敥㍡慤㤸挴㐸㐶㌰ㅤ搵扡慣㑦换挴㔸㔳㙢㝢㜳㔸收戲昴㌱㕢愶戴㝥ㄲ敢㡢户㕣搶ㅥ㤵㠵ㄷ㡢㤴㠹㜸㥦愲晥㙣㙥昷㈷戵㡤㌸昶㌴㌹搸挱㠷捦㌸搹摡敦捥挶㐸㜶㌹摤搹㠷搱敦搶㤹慣㉦㙦搹挳愱㉤慤㠹挷㌴㈶慥搶改㡣㘹搹攳㙣㘶昵昱晡㌸㈷挵㙤㑤ㄳ㈲㘶搳㑦㘲㍤〱愷戹㥡扣㕥捣攸㜵㙦て㤹攰搹㝢晥戲敢㙥慦愵㉦㑥摤㑤愸㡢㡥ㅢ昲挲愷戸㤵㌰㘷昰㤸捦㉣搷㜲㤲㐸㉡㤷㔳愵㌰捣愱戰㑣㤸敤㉣搷㙣〹慣㌵挵戴㘷昳㥡捤㕣㥦㐶㍢㕡扢扥㘶㕢㠵㙥昸昵ㄸ㡢改〴〵昹㘳㔲戴换㈵搹ㄲ搸ㄸ㑢㘹挸㠴㘹ㄷ㠳㘵㌴㌸〵㈲㥦㜹戳捥〳㑤挶ㄴ㘰㜴昰攴㐷㌹㡢㔶㄰攵㙣㈲㜶㔳㉦㍥㐷㡣ㄴ㘷捣㐸㝡㝢ㄶ慣㠱㌳攳㔴㔸㍤扤㝤晢㐸搸㝡ㄴ㜳㙣㜵㝣㌹挷㥡昳㕤换ㄹ晦㌴〸挵㕣㔸攷昵㌱ㄳ㘰捤敢攳搳㘱戲㑢搷挷㑣㥢ㄵ慥㔷搰㌹昳㘷㔳慥㡦捦㐴㙢搷㕣㕦㡤㙥昸㐵㐲㍢㥤㄰〶晦慥㠱搴㔰㔰挷捡㈵㈰攳㙣搸ㄸ攷搰㤰㠹戸㉥〶㉢㘹㜰㉥つ慥㠳㠱㕣ㅦ㥦㠷摡挱晡㉥愳慢户㜲戹㕤㈶慦㠲〳㕣㈶㌳㜹㔷㐷戴㕤㈶㥦捦㠸ㄷ㌰㈲ㄳ㙤㥤散㌲扢搶㘴㜷㌵㑣㜶㠹㕤收攴ち扢㙢攸晣㉥搴㔲搸扤㄰慤㕤戳换㈴㕥晣㈲愵㠳㑥㔰㤰㍦㘶昲㙡㈸㘸搳散㕥〴ㅢ㘳㉤つ㤹攵敢㘲戰㡥〶敢㘹挰挴㕦㘱昷㘲搴㝡㙡㜶㈷〴慡摣〸晣ㄵ㙣㐰㈰㤳㝦戵㔳ㅢ㠱㤷搲改㘵㜴捡㐴㕤㈷㠱捣捥㌵〹扣ㅣ㈶扢㐴攰ㄳ攸㉡〴㙥愰㜳㈶昷愶㄰㜸㈵㕡扢㈶㤰㐹挰昸㐵㝡㌸㥤愰㈰㝦㑦㐳㙡㈸㘸搳〴㙥㠴㡤㜱㌵つ㤹㈵散㘲㜰つつ慥愵〱ㄳ㠷㠵挰敢㔰敢㈴戰戴捣㡤挰㑤戰〱㠱㑣ㅥ搶㑥㙤〴摥㐰愷㌷搲㈹ㄳ㝤㥤〴㌲扢搷㈴昰㈶㤸散ㄲ㠱慦愳慢㄰戸㤹捥㜷愲㤶㐲攰捤㘸敤㥡㐰㈶ㄱ攳搷㘳摣㐲㈷㈸挸摦㕢㤰ㅡち摡㌴㠱户挲挶戸㡤㠶㙦扢ㅢ摣㑥㠳㍢㘸挰挴㘳㈱昰㌷愸昹昴ㄶ㔸㕦攱挶摦㥤㌰〱㝦ㅦ搸㝣摡昸扢㡢㍥敦愶㑦收〹㍢昹晢〲㙤㈶㝦昷挰㘴㤷昸㘳㑡戱昰㜷㉦㥤㌳户㌸㠵扦摦愳戵㙢晥㤸㠳㡣㕦㡦㜱ㅦ㥤愰㈰㝦㑣㐴㜶攱敦㝥搸ㄸて搰㤰㐹捡㉥〶て搲㘰ぢつ㤸户㉣晣晤〱㌵摢〶㔸敡㐶攰挳戰〱㠱摦摢㥣摡〸㝣㠴㑥户搲㈹昳㡣㥤〴晡搰㘶ㄲ昸㈸㑣㜶㠹㐰愶㈴ぢ㠱摢攸㥣戹挹㈹〴㍥㠶搶慥〹㘴づ㌳挶敤㌱ㅥ愷ㄳ㑤㈰ㄳ㤹㕤昸㜹〲㌶挶㤳㌴㘴㤲戳㡢挱㔳㌴搸㑥〳收㍤ぢ㠱㑦愳㘶㈳戰挴㡤挰㘷㘱〳〲㤹晢慣㥤昶㘵㡢㜹㕡晢ㄳ㥤晥㤹㑥㤹愷散㈴㤰挹挹㈶㠱捦挱㘴㤷〸ㅣ㡣慥㐲攰づ㍡㘷㙥㜳ち㠱捦愳戵㙢〲㠷愲㥢㄰昸〲㥤㘸〲㡢搰慡愱愰㑤㐳㜹ㄱ㌶挶㕦㘹挸㈴㘹ㄷ㠳㤷㘸昰㌲つ㤸㌷㉤〴扥㠲摡摥㝡て敥㜸晤㤵昵㐶㍥㌷㌶㕦㐳〷戰挹㐴㙡ㅤ挱戶㌹晥㡤ㄱ㕥㘷〴㈶㍤㍢搹㘴愶戳挹收㑥㤸散ㄲ㥢捣㡦ㄶ㌶摦愰㜳㈶㑡愷戰昹ㄶ㕡扢㘶㤳〹搵挲收摢㜴愲搹㘴㔶戵㠶㘲㘳昳ㅤ搸ㄸ敦搲昰㐸㜷㠳昷㘸昰㍥つ㤸㠴㉤㙣㝥㠰摡㍥ㅤ㙣愶扦㕢搰㡤搰て搱〷㠴搶摡㠲搸〸晤㠸㐱㍥㘶㤰㐹㌰㜰ㄲ捡捣㘹㤳搰㑦㘰戲㑢㠴㌲摦㕡〸晤㤴捥㤹㜸㥤㐲攸攷㘸敤㥡㔰㈶㘸ぢ愱晦愰ㄳ㑤㈸戳戴㕤〸晤㈷㙣㡣㉦㘸挸っ㙥ㄷ㠳㉦㘹昰㉦ㅡ㌰愹㕢〸晤㌷㙡㠳㌴愱敥㉦㑡㜴攳昴㉢㜴〳愷捣昵搶㜱㙣扢晣搷㡣昳つ攳㌰㉦摢挹㈹㤳戱㑤㑥扦㠵挹㉥㜱捡ㄴ㙥攱昴㍢㍡㙦㐶㉤㠵搳敦搱摡㌵愷捣昹ㄶ㑥㌹换搸挱㈹ㄳ扦㌵ㄴ摢㐶捡っ㄰〳て昹㍤㡡㐹攱㉥〶戹㌴挰㡢扤㌰㐱て〳攱㌴ㅦ戵捥㤳㜶愵ㅢ㝦㍤㘰〲晥㤸㉡慥㝤摡戶挹〲晡攴㔷㈱㈸愶㜵㍢昹㘳㉥户挹㥦て㈶扢挴ㅦ㌳挰㠵扦㥥㜴捥㔴昰ㄴ晥㝡愳戵㙢晥㤶愳㥢昰搷㠷㑥昴㌶挹扣㜱つ挵挶㕦㕦搸ㄸ㝥ㅡ㌲愷摣挵愰ㅦつ㜶愳〱搳捣㠵扦摤㔱戳㥤㜳㕣〹散てㅢ㄰挸㔴㜳敤搴㐶攰㥥㜴扡ㄷ㥤㌲㉤摣㐹㈰㜳挱㑤〲昷㠶挹㉥ㄱ挸っ㜲㈱㜰〰㥤㌳㤵㍣㠵挰㝤搰摡㌵㠱㑣㌹ㄷ〲昷愵ㄳ㑤㈰昳捥㌵ㄴㅢ㠱晢挱挶ㄸ㐴㐳收愴扢ㄸ散㑦㠳㐲ㅡ㌰㑤㕤〸ㅣ㡣㥡㡤㐰搷换挶〳㘰〳〲㤹慡慥㥤摡〸ㅣ㑡愷㐵㜴捡戴㜲㈷㠱捣㈵㌷〹㍣㄰㈶扢㐴攰㈶㜴ㄵ〲て愲㜳愶愲愷㄰㌸っ慤㕤ㄳ挸㤴㜵㈱昰㄰㍡搱〴㌲㙦㕤㐳戱ㄱ㌸ㅣ㌶挶〸ㅡ晥摡摤攰㔰ㅡㄴ搳㠰㘹敥㐲攰㘱愸攱㑤攸㘶㜶㡥摢㑢㍤摤昶改〰㍡㠱㔱收扥敢㘱搸ㄸ㉤㘵㤴㌲㐶㘱㥥扡㤳㔱㈶愷㥢㡣㤶挳㘴㤷ㄸ㘵㑡扢㌰㕡㐱攷て愰㤶挲㘸ㄵ㕡扢㘶㤴㌹昰挲㘸㌵㥤㘸㐶㤹〸慦愱搸ㄸ慤㠱㡤㜱㌸つ㤹㈴敦㘲㜰〴つ㡥愴挱挳㌰㄰㐶㐷愲搶戹㐹〶㕣㌷挹㔱戰〱㠱摢㙣㑥㙤〴〶改戴㤶㑥㤹攷敥㈴㤰挹敤㈶㠱愳㘱戲㑢〴㌲㈵㕥〸慣愳㜳收挶愷㄰㌸ㄶ慤㕤ㄳ挸ㅣ㝡㈱㜰ㅣ㥤㘸〲㤹㐸敦挲捦㜸搸ㄸㄳ㘸挸㈴㝢ㄷ㠳㠹㌴㤸㐴〳收摤ぢ㠱㤳㔱ㅢ愰㌷挹㡥敢㐸晤ㅡ㔵户敤㜱ち㝡㠰㑥㘶攲敢㄰㌶㍡愷㌲挴㌴㠶㘰搶扣㤳㑥愶捡㥢㜴㑥㠷挹㉥搱挹〴㝢愱昳㘸㍡㘷愶㝤ち㥤つ㘸敤㥡捥扦愳㥢搰㌹㤳㑥㌴㥤㑣换搷㔰搰愶㉦换㘷挱挶㤸㑤㐳愶散扢ㄸㅣ㐳㠳㥦搱㠰㔹晣㐲攷戱愸㜵㈴㡣愴扦ㄳ搶㡤捦攳搱〵㝣㌲戱㕦挷戰昱㜹〲㘳㥣挸ㄸ㑣〱㤶戱㥦挴ㅡ晡攰慡挴㤳捦㌴㑥㘷㜶㘲㕡收愸㐴㘸㘱づ㘹㐳㜲㔹㉢昲㜶㔹㘴戶愲㔹攲㑣㈹ㅥ㈱愲つ㌹㤴昱㌶㍣㍤挸㜳扥㙤愴愳敦㌳〸摡㜳て挷㝢㐳愵ㅢ㌵㑣㔱捤扦收㥢昴㜷㘳㜶昴攷挰㍢㕦㈲挸㍥㕣扣㜳㌰挴㍤愶㐴㥡摡攲㝣搷㝦㘱〳昲搲ぢ昹ㅥ㔶㝣㈲扦愴㌶㝦㈳㍣扡挶㈴戰扣ㄸ扦㠰㘷㌱摦㑢攸㕢ㄸ㡢㉦㠹挹㘸昲ㄳ㝣ㅤ慤昰搵愳〷挳昰愱㠲㉣〷㠰㍣㍦搳㔹搹搹㤸ぢ搹㍢搷㉦㘴愲敥㔷㘴㤵㠵ㅣ㕤挸戵ち昹㕥ㄴ㝥㘸㐶㈶㝤慢戹慡㐹㌵慢㜰㕥㡦ㅥ㘹捦㥡搳㌲㌹㤹㑦㉤㙦㡤昴㝡㤹挸㤹㝦㈵㈰㍢ㅦ㔰扢㜷㑡㘵㤴㥤㠱つ㥦㐸挴㄰㡣㌰㠴捦摦〳〳攷㠰扣㉤㤰㝤敡㐶㌷摡ㄲ搲扤昳搰搶て㙤愹㕦㙦攴㥤㡦收㕥㘸㤶㐷㉡㌳昰〲㔹㙦〴㉤扢愱〵慦㐲搴㉦㐷攴㈶攴㉦戰扣ㅢ㠳ㄹ㜶㈱慣㡣㈱㉣扤〹愱㝣㔰捡㑡㠸愱㥤〵搴㌱㉢〱挹つ㔷㕤〴㤴摣㕣搰㠸敦㠱㠰〹㔷户扡㄰㉤㕣攵愹慢慣户㡥搳〶㍢慣戲㍥㜴㠵挵摦㔷ㄷ晣扡搰捦㉡愸㍤㔰攰㙡㔳㙢攰㡥㤴ち㌵㐹㡥戱ㅤ挲攷敦て㈵挳ㅡ愴挶㈰ㄷ〶㤱ㅢ〴敢摦㔳㉢て愶挵愹㙣ㅦ挶㤲㈰摢㥢㙥㔹㍢ㅤ敤ㅤ挸〶愲㔵㤰㥤㠹㘰改挸㔶愰㌵ㅤ搹㍥㍡捥㔹㜰〵㘴晢愲捥挵扦㥦㉥っ搲㠵晤慤㠲ㅡ㠲㠲㈰㍢捤㡥散ㅣ㡥㜱㈵㠴捦㝦〰っ㔰㜰㐷㌶㔴㉢て愳挵〵散㔵挲㤲㈰㍢㄰㑡㐱昶ぢ戴㜷㈰㍢ㄸ慤㠲散㘴㔷㘴㜱㔷㘴挳㜴㥣戵㜰〵㘴㠷愰捥挵㍦㕣ㄷ㐶攸挲愱㔶㐱㤵愰㈰挸愲㜶㘴敢㌹挶㡢㈱㝣晥〰っ㔰㜰㐷㔶慡㤵㤵戴搸挰㕥㔵㉣〹戲㜲㈸〵搹㔵㘸敦㐰㔶㠹㔶㐱ㄶ㜲㐵搶攸㡡慣㑡挷戹ㄶ慥㠰慣ㅡ㜵㉥晥ㅡ㕤㌸㕣ㄷ㡥戰ち敡㈸ㄴ〴搹㠹㜶㘴搷㜳㡣㥢㈰㝣晥㔱㌰㐰挱ㅤ㔹㔰㉢昹攰捡戸㤹扤㡥㘲㐹㤰㡤㠶㔲㤰摤㠶昶づ㘴㘳搰㉡挸㡥㜶㐵㌶捤ㄵ搹㔸ㅤ攷户㜰〵㘴攳㔰攷攲ㅦ慦ぢㄳ㜴㘱愲㔵㔰昵㈸〸戲㈹㜶㘴㜷㜱㡣㜷㐳昸晣㔳㘰㠰㠲㍢戲愹㕡㌹㠶ㄶ昷戳搷㔸㤶〴搹㜴㈸〵搹ㄶ戴㜷㈰㥢㠱㔶㐱㔶敢㡡㙣㤴㉢戲〶ㅤ攷ㄱ戸〲戲㤹愸㜳昱捦搲㠵搹扡㜰㡣㔵㔰挷愱㈰挸㐶摡㤱㍤捡㌱㙥㠳昰昹㡦㠷〱ち敥挸㑥搰捡挹戴㜸㡡扤敡㔹ㄲ㘴㈷㐱㈹挸㥥㐱㝢〷戲㌹㘸ㄵ㘴〱㔷㘴㠷戹㈲ぢ改㌸捦挱ㄵ㤰捤㐵㥤㡢扦㐹ㄷ㥡㜵㈱㙣ㄵ搴㝣ㄴ〴搹愱㜶㘴㝦攱ㄸ㥦㠷昰昹㈳㌰㐰挱ㅤ搹〲慤㥣㐱㡢㔷搸慢㠱㈵㈲换㙦㠵搲㜹昲戲㝤戰挸㤶㕤挵て㡡昸㙤㈹㙦㜲ㅡ散搷㜲㜴㝢愸ㄵ㕦戲㌷つ㜹ㄷ㐹㌶晤ㄴ㥥搶攷㤹搹㉦㕤㕥〱〸㠴攳㑦攴㠹搸挹㐱敡〹摣挲㈶㘷晤敥㍤晢昷攵て挱扡晢㘱㔱戸㠱㜵㕥㜸㜱㜴㔸㐹挸㤰㝡㥤敢ㅡ慦搰㡤愲㉡㕢攳㑥㌴攴㐰攵挵㥦㡡改搶㌷戸㈵㔸㑢㝥ㅣ慤㍦㍣戱㠴㕥㜷挷㐵㤹昵㠵㥥晣ㅣ搶昰㔶攴搸晣㠰㡦扤扤㠹愸敡㘴户㌱愸㠴㙥㝤㥢㌶〸㤱㡦㍦搵㡥㔶搹㝢昶戱敤㍤摥㜷㘱㤲昱敡㔲つ㜰摤愵ㄶ挳ㄳ㌱ㅢ敦㐳㘲㤷㕡㠲㍡ㄷ晦㔲㕤㔸愶ぢ愷㔸㠵扥愷愲挰㡢ㄶ㔲昷愳㉥晥攵昰捣㈸摥て㌰ㅡ攷㈵摣摦搱收㜲〹昷㈱㥡㔳㉥攱晣愷㔹㕥捣慦晣晡ㄸ㝡昹摥㉦戵〲敤戲敥㍦㐵ㄳぢっ愵捥㠴ㄴ㉥晤㌶㉥㍢慦搲晡戸搲㜶ㄶ㍡挱㠹挷昸㈷㈴㘸㍢㥢慥戰昸捦搱㠵㤵扡㜰慥㔵㔰慢㔰㤰㈳㔱㉦戸散戸㑡晢㤲挳晢ㄷ㠴捦㝦㍥っ挴愹摢㔵摡〵㕡搹㠸㌰挶户散㌵㠷㈵㌹挶慥㠱㔲㤰㝤㡦昶づ㘴ㄷ愲㔵㤰㜹㕣㤱晤昷㙢户慢戴㕦敡㌸戹搸搲㠰散㈲搴戹昸搷敡挲㍡㕤㔸㙦ㄵ搴慦㔰㄰㘴摦挲㘵〷戲㝣㌸㌰扣㄰㍥晦愵㌰挸㠸散戲づ㈵挲ㄸ扤搸㙢ㅥ㑢㠲㙣〳㤴㠲慣㉦摡㍢㤰㕤㠹㔶㐱昶ㄹ〲愶㕦㝦㝥攲㡡散㉡ㅤ㘷㜷戸〲戲㡤愸㜳昱㕦慤ぢ搷攸挲戵㔶㐱㙤㐲㐱㤰㝤㘴㐷搶㥦㘳摣ㄳ挲攷扦〱〶ㄹ㤱摤愸㤵㝣攱㤸戱㉦㝢挵㔸ㄲ㘴㥢愱ㄴ㘴晢愳扤〳搹捤㘸ㄵ㘴㍢㕤㤱晤捤ㄵ搹㉤㍡捥〱㜰〵㘴户愲捥挵㝦㥢㉥摣慥ぢ㜷㔸〵㜵㈷ち㠲散㔵㍢戲㈲㡥昱㐰〸㥦晦㉥ㄸ㘴㐴㜶户㔶昲㑤㘲挶〸昶㙡㘷㐹㤰摤ぢ愵㈰㍢っ敤ㅤ挸㝥㡦㔶㐱昶㈷㔷㘴捦戸㈲扢㑦挷㈹㠳㉢㈰扢ㅦ㜵㉥晥〷㜴攱㐱㕤搸㘲ㄵ搴挳㈸〸戲敤㜶㘴ㄵㅣ㘳㈵㠴捦晦〸っ㌲㈲摢慡㤵㝣㐵㤸㜱㈴㝢昱ㅤ㕦㈶戲㙤㔰ち戲㔱㘸敦㐰昶ㄸ㕡〵搹㐳慥挸戶戸㈲㝢㕣挷愹㠳㉢㈰㝢〲㜵㉥晥㈷㜵攱㈹㕤搸㙥ㄵ搴戳㈸〸戲〷散挸挶㜲㡣攳㈰㝣晥㍦挱㈰㈳戲㍦㙢攵㔹〸㘳搴戳搷搹㉣挹㍡摢〱愵㈰㥢㠶昶づ㘴捦愳㔵㤰摤攱㡡散㌶㔷㘴㉦攸㌸つ㜰〵㘴㉦愲捥挵晦㔷㕤㜸㐹ㄷ㕥戶ち敡㌵ㄴ〴搹㉤㜶㘴戳㌸挶搹㄰㍥晦摦㘰㤰ㄱ搹敢㕡戹ち㘱㡣ㄳ搸敢㝣㤶〴搹ㅢ㔰ち戲㐶戴㜷㈰㝢ぢ慤㠲散㙡㔷㘴㔷戹㈲㝢㕢挷㘹㠲㉢㈰㝢〷㜵㉥晥㜷㜵攱㍤㕤㜸摦㉡愸て㔱㄰㘴㔷搸㤱㠵㌹挶ㄶ〸㥦晦㈳ㄸ㘴㐴昶戱㔶昲㙤㕤㐶㉢㝢㕤挴㤲㈰晢ㄴ㑡㐱ㄶ㐷㝢〷戲捦搱㉡挸㝥㘹㐳收㍤ㄹ㈶㤹慦つ㝥攱ち㤷㑦㑤㘵㘴〹㜴〶摣㝦愲捥挵晦㠵㉥㝣愹ぢ晦戲ち敡㉢ㄴ〴敥㙡㍢摣㜶づ㝣㌱㠴捦晦㌵っ挴㈹㑦昱〶捦改〶捦攰摥㔳愰㜵㥢㜷昹㐶摢昳㜵㕤挶㜲㍡扡㤴㈵㘱攰㍢㈸㠵㠱ㄵ㘸敦㘰攰㝢戴ち〳㘷搸ㄸ攸㍣愳㥦敥ち㤶㠳挲㉦昶〹戸〲㔸㍥扡攴攲捦搱〵㍥慢㤴㤶㍣慢愰㝡愰㈰㘰㤷摢挱慥攴ㄸ捦㠵昰昹ぢ㘰㐰㘳搷㜹ㄷ㐳㉢慦愲挵㙡昶摡挸㤲㈰敢〹愵㈰扢㄰敤ㅤ挸昸㠸㔱㤰㉤㜲㐵ㄶ㜳㐵搶㐷挷㔹〷㔷㐰挶㠷㡡㕣晣㝣戰㈸〵㍥㐵㤴挲㙥㔶㐱昵㐷㐱㤰戵摡㤱㕤捣㌱㕥〲攱昳昳ㄹ㈱㡤㕤㤱昱搹愱㈸㌷搱攲ち昶攲ㅢ戲㑣㘴昲散㡦戵㡤㘸敦㐰戶て散〵搹ㅣ㔷㘴㈷戹㈲攳ㄳ㐰㠹㜳ㅤ㕣〱ㄹ㥦昶㜱昱て搲〵㍥摥㤳㤶㐲慢愰昸攴㑥㤰㥤㘰㐷戶㐹挶〸攱昳て㠵〱㡤㕤㤱ㄵ㘹㈵摦㥣㘵摣挲㕥㝣昵㤵㠹散㈰㈸㘵㥤摤㡥昶づ㘴挳搰㉡挸愶扢㈲㥢敡㡡㡣㡦收昰㡢搷慦挲ㄵ㤰つ㘷〵㡢㥦㡦攲愴挰攷㙥㔲㈸戶ち㡡㑦搰〴㔹扤ㅤ搹摤ㅣ攳㍤㄰㍥㝦㈹っ㘸散㡡㡣て搷㐴㜹㈷㉤ㅥ㘰㉦扥搳捡㐴㔶〱㡤㈰晢〳摡㍢㤰昱攱㤸㈰ぢ扡㈲㍢捡ㄵㄹㅦ㤱㐹㥣慤㜰〵㘴㝣ㅣ挶挵捦㐷㘲㔲㌸㐲ㄷ昸っ㡣㡢攲愳㉤㐱㜶愴ㅤ搹㌶㡥昱㡦㄰㍥㝦㄰〶㌴㜶㐵挶愷㕥愲攴扢慥㡣敤散挵㤷㔵㤹挸攴愹ㄵ㙢捦愲扤〳搹㔸搸ぢ戲ㄲ㔷㘴挵慥挸挶改㌸㍢攰ち挸挶㌳㈸ㄶ晦〴㕤㤸愸ぢ㝣㌸挵㐵昱㈹㤳㈰ㅢ㘱㐷昶㍣挷昸〲㠴捦㍦ㄵ〶㌴㜶㐵挶〷㔰愲㝣㤸ㄶ慦戲搷㈳㉣挹ㄱ㐴ㅥ㈰戱昶㍡摡㍢㤰昱〱㤲㈰㉢戴㈳攳搹㐱收愴〷戹㈲㥢愹攳扣〵㍢㈰㥢挵愰㔸晣㝣㙣㈴〵㍥㈳㤲〲㥦ㄳ㜱㔱挷愳㈰挸昶戵㈳㝢㠷㘳㝣ㄷ挲攷攷㈳ㅦㅡㅢ愹㈷〲㠳㈷〲㍦ㅦ〵㠹㤲㙦愷㌲㍥㘲慦㈷㔸㈲㌲晦㐹㕡昹㈹摡㝢攷收捦㐵晤㠸捣㥦㜲戳㍤〶ㄸ㡥て㠳愴㝣㔳摤㔸㝣昳ㅣ搳㍡㍣戹㜸㈱㠷昹ㅡ㡢扣㥣挳扢攷㡢㌳㈲晣〸㄰晦昲晤㐰晤㍦昰挳昵搵㌹㡤㐱㡦晢攳捦昸ㅣ㠰晢㌶〳㉥㙦扤ㅤ户摦㥦㡤㐲ㅢ㤷愰㐸㑦㠱昵摦㙦晤摦㈳搸㌷慣㝢㥥愸〶慦慤捤摦戹挲昹愶㙥改ㄹ摣㘸昶搰晦㑢慥〹慡㠵攸㔹〴慤戱㤳攲つち搹挸㝡〲收换㜸戹㜷摡户㐱昹㉣㠵昳摢愰晣㌱㜸挲慦挷昸户慣㍣搵㠶ち㔷愰㉡㐰て戲㈶㐰扦㈲搰㈴㥡扢〷戴㕤昷捣ち昴愱戵㐱っ挴攳搱晦慦㕥ㅦ㔴愷愲愷ㅢ搰㕣ぢ㑦ㅡ搰ㅣ㑢攱晣搶㈷晦改昰㠴㕦扣㔳挶〴㝡ㄶ㉡〲搴㘳〷慡〰戰敦㌹㔰㜵て攸㑡摤㌳㉢搰㥦摦ㄹ㈴㑥㡦晥扦晣敥愰扡〰㍤摤㠰㝥昳㔵㠶㌵晡戵愵㜰㝥扢㤳晦ㄷ昰㠴㕦㡦搱〳ㄸ㝡攷慡戵愸〸搰晦愰㐷挷ㅡ㌵〸㜴㍤㔴摤〳㝡戱敥㤹ㄵ攸攳ㄷ〵㍦㍡晡㜷㠳㔶攲晦㌹て㍤㜹捤戶ぢ搷〵搵〶昴㜴〳晡捦㑣㐰晦㘱㈹㥣摦攲攴扦ち㥥昰㡢搷慡㤸㐰慦㐵㐵㠰㝥㘶〷摡㡦㐰慦㠷慡㝢㐰㌷改㥥㔹㠱㥥昴㘴㄰〳昱㜸敡㥦㌶晦敦昷愷愰扡ㄹ㍤摤㠰㝥㤸〹攸摦㉤㠵昳摢㥡晣户挱ㄳ㝥㤱〴㘶〲晤㉤㉡〲昴㝤㍢搰〱〴㝡ㄷ㔴摤〳㝡户敥㤹〹㘸㥦挷敦晦㜸攴改㈳㠳〵㌷㍤㔸扣㝥㙥㌰㘸戴㕥搹㘲㜸㐷〷搵晤攸改〶昴慤㑣㐰摦戴ㄴ捥㙦㘵昲㙦㠱㈷晣攲ㄵ㉥㈶搰㐷㔰ㄱ愰㍢敤㐰〷ㄳ攸愳㔰㜵て攸㌶摤㌳ㄳ㔰っ〰换慡愰晣搳晦捦戸㈰愸㥥㐲㑦㌷愰慦㘴〲晡戲愵㜰㝥晢㤲晦ㄹ㜸挲㉦扥㠰捣〴晡ㅣ㉡〲昴慦㜶愰挳〸昴㉦㔰㜵て攸昳扡㘷㔶愰㡢㙥㌴㠱敡晦㡦㙦づ慡㔷搰搳つ攸㡥㑣㐰㥦戳ㄴ捥㙦㔹㔲㥣攷攷挹搳㌸っㄸ㜰ㅦ㈸㝦晥㥤㘸挵㉦ㅥ晦愲搵〸㐰昴捥昱敢戹㝥昵愶敥搳搱〲㔳晦摢扡㑦ㄹ捤㜳ㄵ㈷挸㠵戲敤㜶捡㉡愰㔴㥣㘲敥ㅣ晥㈵㠸㙦㥥ㅤㅦ换㌴晣㍦㕡ち攷㜷㔳昸㌹㌳㡤㕦扣愰挵っ捡改㘵〹晡愸㍤攸㐸㈸晢㝥〹ㄵ晥换ㅦ晥改攵〷㕣〶㜰戶㔹㝡㘶㕤㑦昵慦〵挵愷晥扦摦捥愰攲戴㜳㈷搰捥换㠰㍦㘴〲扡挵㔲㌸扦㠳挲捦㠹㙡晣㝡㡣㍡ㄳ㘸㙥扥〵昴〱㍢搰戱〴㥡て㔵昷㠰㝡㜵捦㑣㐰㑦㜹㙣搸攱㙢㥦晡挳愸㌱ㄷ戴扥昷捤收㠷㐷㍤㔵晡攸㙦㡡㘳㕢㐷愹㕥攸㔹挴攱敤愴攸〴㝡㙦㈶愰昷㔸ち攷㜷㑤昸晢挲㤳〰㥤㙣〲摤ㅤ㜵㔹愳㜷搹㠱㑥㈱搰晥㔰㜵て攸㥥扡㘷㈶愰㐰攱昹攳㍦づ慢晤晣搵㔳敦㜸っ晦㡦㍥昷搷㠷捦㕣ㅢ愸㔵晢愲㘷ㄱ㌱敥愴攸〴㝡㝢㈶愰户㔹ち攷㜷㑡昸昷㠷㈷〱摡㘰〲㍤〰㜵〱㝡㡢ㅤ攸㉣〲㉤㠲慡㝢㐰て搴㍤㌳〱昵㉦搹扡昶慣扢㐶〵㡤㔳㌷敤㍤攲捡摡攰昹㠷㝦昰摥㥥㜳敡㠲㙡〴㝡ㄶ戹〰扤㌱ㄳ搰ㅢ㉣㠵昳扢㈳晣㠷挱㤳〰㍤摥〴㕡㠶扡〰扤摥づ昴㐴〲慤㠰慡㝢㐰㉢㜵捦㑣㐰㥦㝥㘰攸戵慤㥢㘶〷㙢㍥昹戴攸攲㘱挷〶㌷敤㝦晦收〷㙦㍤㍥愸㡥㐴捦㈲ㄷ愰ㅢ㌳〱扤捡㔲㌸扦㈳挲㍦ち㥥〴㘸㤳〹戴づ㜵〱㝡㠵ㅤ㘸㤸㐰挷㐲搵㍤愰攳㜴捦㑣㐰㥦挹㙦ㅢ摣㍡搳ㄳ晣攵搳㘳㍦晡㘰㘸㑥㜰挶挵〳敥㥤昷㘵㙥㔰搵愳㘷㤱ぢ搰㕦㘵〲㝡㠹愵㜰㝥ㄷ㠴㝦ㅡ㍣〹搰㠵㈶搰〶搴〵攸㝡㍢搰㈸㠱捥㠲慡㝢㐰㘷敢㥥㤹㠰〲ち㉥搱㜷〴㔳晥㉦㝦㍥愸㑥㐰捦㈲戴㍡昷搱ぢ㌳〱晤㠵愵㜰㝥攷㠳扦ㄱ㥥〴㘸挲〴摡㠴扡〰㕤㙤〷摡㑥愰㘱愸扡〷戴㐵昷捣ち昴慢㉦㑤愰搶晦㌳㠶晦㈷愸㕡搱戳挸〵攸㜹㤹㠰㥥㙢㈹㥣摦敤攰㡦挳㤳〰㍤搵〴㥡㐰㕤㠰㥥㘳〷㝡ㅡ㠱戶㐳搵㍤愰㡢㜵捦慣㐰搷晦挶〴㙡扦昹㕡㡥㥥㐵㉥㐰㔷㘴〲㝡扡愵㜰㝥㠷㠳㝦〵㍣〹搰戳㑤愰㘷愳㉥㐰㤷摢㠱慥㈴搰㤵㔰㜵て攸戹扡㘷㈶愰扤㕥愸㙦扢㙤㔰㘵戰昷昲㝤挷晤㙤㕤㜵戰捦㤰㡦〶昴㌱㡥〸慡搵攸㔹攴〲㜴㐹㈶愰㡢㉤㠵昳扢ㅡ晣ㄷ挲㤳〰扤挰〴扡づ㜵〱㥡戴〳㕤㐳愰ㄷ㐳搵㍤愰㤷攸㥥㤹㠰〲㡡挷昳㔰㈴ㄸ㌹昰换㐹昷扤ㄶ〹扥㕣㜷攳捡㜷ㄳ慤㐱㜵〵㝡ㄶ戹〰㡤㘷〲ㅡ戳ㄴ捥敦㘴昰㙦㠴㈷〱扡捥〴㝡ㅤ敡〲戴搵づ昴㘲〲摤〴㔵昷㠰摥愰㝢㘶〲晡昷㍥昳搶ㅣ㜸昴昳挱戵晥搹挳捦戸晤挵攰攱扢㡤㝤攲愵摥㉦〷搵㉤攸㔹攴〲㜴㕥㈶愰㉤㤶挲昹摤ぢ晥摢攱㐹㠰㙥㌰㠱摥㠹扡〰㙤戶〳扤㤲㐰敦㠶慡㝢㐰敦搱㍤㌳〱攵ち昵慣晦㜳㔰晥敢愳㉦㡦扡て愰㘷ㄱ㕡㥤㐷摤挶㑣㐰㑦戲ㄴ捥敦㔸昰晦〱㥥〴攸㜵㈶搰慤愸ぢ搰ㄳ散㐰㌷ㄱ攸㌶愸扡〷昴㡦扡㘷㈶愰㕢㠷攷ㅣ昲搶㙦㐷〶㔷摤戰摦慡ㅤ㉢㠲挱㤲慡挳㑦慢㌸㄰户搳摢搱戳挸〵攸㌱㤹㠰捥戶ㄴ捥敦㔲昰㍦ぢ㑦〲昴㘶ㄳ攸づ搴〵攸㑣㍢搰㕢〹昴㜹愸扡〷昴〵摤㌳ㄳ㔰㔹㤳挱ぢ㠳㈹晦㑢㉥ち慡㔷搱戳挸〵攸戴㑣㐰愷㕡ち攷㜷㈶昸㕦㠷㈷〱㝡愷〹昴㉤搴〵㘸扤ㅤ攸摤〴晡づ㔴摤〳晡慥敥㤹ㄵ愸摢改攵㈳昴㉣㜲〱㍡㍥ㄳ搰㜱㤶㈲敤扢ㄱ㍥㠵愷慥扥ㅢ㠱ㅦ㘰〸㈷攴敤㝤㝤ㄱ㌴扦㠵昹昲㍤㕢捣㘶㑥㡡换㝢摢㕡攵昳ち扤昰ㅡ昳戶㠵攱戶㝡扣戱ㅦ㉦㉦㙦㠸㐴慤㠴㝣扣挹㥦敦戳搱㉦捡㌶愴挶捥摥㤶㘹㙤㜸㜳㜶㡦㤶㠹〹扣㤹慣戹㈰㍡㍤㤴挴ㄷ㈱挷㝥ち戹㤲昸〴㐹ㅥㅦㅥ㘰㤶㈱ㄷ敦ㄵ捥㜱晤昰挶㌳㔰㍢摦散㘳换ㄲ敤攴㐳扦㥤㉡㠷㙦㍦敦㕥愶愴昷㝥㙣㙡昶捦ㅢ㌵摢摥改㥦愷挶㘰㌵㥢㜹昹㘷㜸扥㤷㜱㈳〵搲㜸㄰㝤扣㕢㈰㜲昱㤹〷㤹㍣㠱昰ㄹ㝦㐰㡢㝣㤰㐷㠴㈷㥦捦ㅥ㥣〰昹㤱㥡㜱㘴㈰㝦㐹愴㌹㌹摦㍢㍦ㅣ㤹㌷ㅦ㈹㐱㍤㝢ㄲ戵㕥ㄴ愷晡戹㈵㜹ㅦ捥㍡扣愳㕣㠷户㤵攳攰昰㍡㠷戶㉤㜵㘸㡡㑦ぢ㌸㍣扤愸敦㜵挰挷戲〶慣㜶つ昸㐴㝡挰愷ㅣ〱㌹㙢㥦ㄲ㤰㔳摦㠲昰㘹ㄴ㌲慦㠰㔲搷㠰捦搲㝢㉡挲㍦戳改㉦挰㘳㤲慦㌸㝢㥥ㄲ㤰㔳搰ㄲ㜰〷ち㤹〳㡥㜰つ昸㍣扤愷〶㝣㤱㑤戶㠰㥣挵㑥〹挸愹㘰〹昸ㄲち㤹〳ㅥ攸ㅡ昰ㄵ㝡㑦つ昸ㅡ㥢㙣〱㌹㥢㥣ㄲ㤰㔳戲ㄲ昰㜵ㄴ㌲〷㉣㜴つ昸〶扤愷〶㝣㡢㑤戶㠰㥣搵㑤〹挸愹㔱〹昸づち㤹〳づ㜴つ昸ㅥ扤愷〶晣㠰㑤戶㠰㥣㕤戵〷昴㜳㡡㔲捥㈲ㅦ搲昲㈳㡡㡦㈱㝣㡡戳㤴㜲㍡搹つ戱昸〴㠵㥦捣挱㍢挱ㄵ㘷㉥㐵搱捦㔲昴愳㈲㈷㔷㤵㐱㈱㘳晦っ㠵扥昸摡㠹㜰ㄳ摥ㄸ㔷㈸ㅦㄷ㑢攴愸扥㝡捣挷㡤摥慦㜳挷晦〷㙣つ捥㔶㉡㌹㠸㜱愷晦㠲㑤戶㌱㔷愰捥㌱㌷㕣㜶㕦昰扢戲ㄳ㙢搵ㄱ㘸㤰㐰晦㐲㈱㌳㐹㠶づ攸戱ㅦ㘹晥㐳敦愹㈴㝤捤㈶㕢挰㤱愸摢㐹㔲㜵㘸㤰㠰摦愲㤰㌹㘰慥㙢挰晦搲㝢㙡㐰て㜲昱敤〱挷㍡〳㑥搶〱㜳㘰㤹㌹攰㜷晦㜱㍢㤶收搱㝢㙡㐰慦㈳攰ㄴ㘷挰〶ㅤ戰㈰㙢挰㝦扢〶昴愵〷散攵〸㌸换ㄹ昰㜸ㅤ戰㑦搶㠰㥦扢〶昴愷〷摣捤ㄱ昰㐴㘷挰㈶ㅤ㜰㡦慣〱㍦㜴つ戸㘷㝡挰扤ㅤ〱挳捥㠰ぢ㜵挰㠱㔹〳扥攳ㅡ㜰摦昴㠰㠳ㅣ〱愳捥㠰〹ㅤ戰㌰㙢挰搷㕤〳づ㐹て㌸搴ㄱ戰摤ㄹ昰㔴ㅤ昰挰慣〱㕦㜲つ㜸㌰晡㜸㠷㐱愴㥥昱て㜱〴㍤捤ㄹ昴㙣ㅤ㜴㐴搶愰㍢㕣㠳ㄶ搳㝢敡慥㔱攲〸戸搲ㄹ昰〲ㅤ戰㌴㙢挰愷㕤〳㤶愷〷慣㜴〴㕣攳っ戸㑥〷慣捥ㅡ昰㌱搷㠰㠷愷〷㍣搲ㄱ昰㘲㘷挰つ㍡攰㔱㔹〳㍥散ㅡ㌰㤸ㅥ㜰戴㈳攰㤵捥㠰搷改㠰㘳戲〶扣摦㌵攰戸昴㠰ㄳㅣ〱㌷㌹〳摥慣〳㑥捡ㅡ昰㙥搷㠰昵改〱愷㍡〲摥敡っ㜸愷づ㌸㍤㙢挰摢㕤〳捥愰㜷敥ㅡ㥤㔷㥢㌳ㅤ〱敦㜶〴捣㝦㄰つ㍦昸ちㅦ愷摢敥㝥㑣㘸㌶〶愲㜸㔹㑥ㅦ挶㌱慣㔹攳㔴㕢搱捡㘱ㄸ㍦㘳敢㌶㙤㜳慣摤㠶搷戵㘲㜳ㅣ㕢㥦搲㌶挷摢㙤㜸㈹㉡㌶㈷戰㤵㔷愱ㄲ敢㐴扢捤昳摡收㈴戶昲挲㔱㙣ㅡ敤㌶慦㘸㥢㌹㙣㝤㑤摢㠴散㌶扣㐶㤳㔸㜳搹晡㤶戶㘹戲摢昰戲㑡㙣㥡搹捡㉢㉡㠹ㄵ戶摢㝣㠸㔶戹㈸扡ㅣ㙢㤴㔷㑢㐷㠲㤵㠲ㅣ慦攲ㄵ㤵㈸㉥戳ㄴ㈳㐵愱搴挷㕡㜱愹愵ㄸ㐵㐲㈳㜴捡㙢㈲〹戸㠰㌵㕥づ㐹挰㠵愸昱㈲㠹㝦㡡㤷㌱㘲搳㑡ㅢ㕥挱㠸㑤㤴㌵敡昹挷㉢て戱㠹㐹慢愵㌲攲㜶ㅢ㕥㉣㠸捤㈲戶昲㍡㐱晣㥣㙣户攱昹㕤㙣摡搸捡㔳扢搸㈴散㌶㍣㈵㡢つ㕦晦慡㜸㌶ㄶ㥢㜶扢つ捦愲㘲戳㤸慤㍣㠱㡡捤ㄲ扢つ㑦㝣㘲戳㤴慤㍣攷㠹捤㌲扢つ捦㔵㘲㜳ち㕢㜹㥡ㄲ㥢㔳敤㌶㍣扤㠸捤㜲戶昲慣㈲㌶愷搹㙤㜸㌶㄰㥢搳搹捡ㄳ㠱搸慣戰摢昰〰㉥㌶㘷戰㤵挷㙥戱㌹搳㙥挳㘳慥搸㥣挵㔶ㅥ㙥挵收㙣扢つて㤳㘲㜳づ㕢㜹㠴ㄴ㥢㤵㜶ㅢㅥ搹挴收㕣戶昲愰㈶㌶攷搹㙤㜸㌰ㄲ㥢㥦戳㤵挷㈱戱㔹㘵户攱昱㐳㙣捥㘷㉢てㅤ㘲㜳㠱摤㐶昶㘳㙣㈴挶㙡戴敡挵捦晤㔹敥〶搶愰㠰㝣〳搹㤳搳慣戸㐷㡢搵㠵愶㤵散换㘹㔶摣愷挵敡㈲搳㑡昶收㌴㉢敥搵㘲戵捥戴㤲晤㌹捤㡡晢戵㔸㕤㙣㕡挹ㅥ㥤㘶挵㍤㕢慣㝥㘵㕡挹㍥㥤㘶挵㝤㕢慣㉥㌳慤㘴慦㑥戳攲摥㉤㔶ㅢ挴慡㉦㜷捣㘳㘰㤵戳㔴㌵捤㘹㥥㌳攷㍦㝤昳ち〷收晤㉣搸敢戲㥤㑦扥戹昶㉦㈷㡣㝣敦摢㉢慥昸换摢㙢户㝦晢挰摣㤱㡦㕤㝢敤愳㤳㌶㙥㝦㜳户㤶慢㜳敥昹㑦晤搵换〳ぢ㤷㥦摣㌲敢㤰昱换㡦㕤㜰㜴㘰㝡扦攱戹戹㍤㝡ㅣ戴晢攳㝢ㅦ散㍦攳攴摦愹㠷㕦摡㉢愶㘴㕦攷㌰慥㐰㈴慥慦㘲晣昹戹捦换㌰慥㐴挱戸ち愲㜷㡥㤲㕤㥥愶㈹敢㡥扢扥㤸㕥㑤慢㕣㘵敥昴㑥㉢敥晣㘲㜵慤㘹㈵扢㝤㥡㉦敥晥㘲㜵扤㘹㈵㍢㝥㥡ㄵて〰㘲㜵㠳㘹㈵扢㝥㥡ㄵて〱㘲㜵㤳㘹㈵㍢㝦㥡ㄵて〲㘲昵㙢搳㑡㜶晦㌴㉢ㅥ〶挴敡ㄶ搳㑡づ〰㘹㔶㍣㄰㠸搵㙤愶㤵ㅣ〲㘸愵㜳㙢㔰昶昸㜹㈸㄰慢㍢㑣㉢㌹〸愴昹攲挱㐰慣㝥㙢㕡挹㘱㈰捤㡡㠷〳戱扡换戴㤲〳㐱㥡ㄵて〸㘲㜵㡦㘹㈵㠷㠲㌴㉢ㅥㄲ挴敡㜷愶㤵ㅣっ搲慣㜸㔰㄰慢晢㑣㉢㌹ㅣ愴㔹昱戰㈰㔶て㤸㔶㜲㐰愰㔵ちㄳ㍣㌰㠸搵ㄶ戱昲敢捤㑡昱㈸㈰㈷慦㕡敢ㅣ㌵ㅡ㝤㌹〷挰ㅤ㕦ㄴ㐱㠷㠲晢扡㈸㐶㌹ㄴ摣扤㐵㜱㤴㐳挱㍤㕡ㄴ㈳ㅤち敥挴愲㌸搲愱攰㝥㉢㡡㈳ㅣち敥慡愲㌸㍣㔵攱攷㉥㈵〰ㅦ㐳〱扢〶㜷㈶㌱慣㑥㌵㔴摣挱㐴㔱㘵㈹昸㘵戰挶㤳㘸㔵摣慢㐴㔵攱攸挳ㅤ㐹ㄴ攵づ〵昷ㅤ㔱㤴㌹ㄴ摣㕤㐴㔱敡㔰㜰てㄱ㐵挰愱攰㑥㈱㡡ㄲ㠷㠲晢㠱㈸づ㜳㈸戸改㡢愲搸愱攰搶㉥㡡㐳ㅤち㙥攰愲ㄸ攱㔰㜰㥢ㄶ挵㜰㠷㠲㥢戱㈸づ㜱㈸戸攵㡡㘲㤸㐳挱㡤㔵ㄴ〷㍢ㄴ摣㍥㐵㜱㤰㐳挱㑤㔲ㄴ〷愶㉡昲戹㉡戳㝣㥦㙦攷㤴㜶〱㔷㘱㤴㕦昰挱挹㙤㕦㜴㙣慣㍤㉡慦摡昱㐶昹㥤慡戱㝥搶㤷㌳っ敦戰搹慤愳愵挳戶㑦㐷㤳昴ㄹ㘰㝥㈳㘶㘸㙥㙢㤸㈶挳㍢㥤昶㜷㙡挴ㅥㅢㅦ户㍦捦㤰捣㔹晤㝡㠰捣戳㉦㔰㍦搸戰㐰戱㠳昱ち搸攰愲㍡㑢㔲㔵摣㜶攵㕡攰㔵ㄴ昲㘹昶〳㕣昳昴搳捤搷〸扣㠶〸㡡戱攴㤲㐳ㅦ㘶攴㤲㔵㔴昰㥣㜲昰改昹晦〰㈹敢㕥ㅥ | F33: 㜸〱敤㝤㜹㝣ㄴ㔵戶㝦摦㤰㌴愹㘶㙢㌶㜷㌱㈰㔱㄰㡣改㑥㈷㥤愸㐸㘲搸㘵㤳戰㈸㠸搰㈴ㅤ㘸㐸搲搸改〴㔰ㄴ㜰ㅢ昷ㅤ㐷㐴㐵㔱㥣㜱昷㠹ぢ愳㠸ぢ攲扥㡣ぢ慥攳扥捥戸㡤摢㔳㜱搴摦昷㝢慡㙥㔲㕤㕤㥤㐸㥥敦昳昳㡦㔷㐹㥦扥昷㥣㜳捦戹攷㕢㜵慢慡敦㍤㕤敤㔱ㅥ㡦攷㔷㙣㝣攷㤶捤挲㕥㔵换ㅡ㤳搱晡㠲捡㜸㕤㕤戴㍡ㄹ㡢㌷㌴ㄶ㔴㈴ㄲ㤱㘵攳㘳㡤挹㑥㔰昰捥㠹㐱摥㤸㌳愷㌱㜶㝣㌴㜷㑥㜳㌴搱〸愵ㅣ㡦㈷㌷搷挸㠲㝣㜷敢攵搷ㄵ㠳慤㡣㙣ㄲ㘸㜹っ㉦㐹㘷㤲㕣ㄲ㠳挴㐷搲㠵愴㉢㐹㌷㤲敥㈴㍤㐸晣㈴㍤㐹㝡㤱昴㈶改㐳搲㤷㘴ㄷ㤲㕤㐹㜶㈳愱㝦㘳て㤲㍤㐱扡敥〵㌲戵昲昰㐹昳ㄶ㈲㥡慡㘴㍣ㄱㅤ㥡㌷摤散昳戰㐰愰㈰㔰㔰ㄴち㤴ㄵㄴづ捤慢㙣慡㑢㌶㈵愲挳ㅡ愲㑤挹㐴愴㙥㘸摥攴愶㜹㜵戱敡㈳愲换愶挶ㄷ㐵ㅢ㠶㐵攷ㄵㄶ捤㡢㠴㑡〳愱攲攲摡戲戲搲慥㝢挳昲挴捡挳㈷㈷愲戵㡤扦㤷捤㝥戴㌹愹昲昰㠲㠹搱攴敦㘵㜳ㅦ搸㠴挹ㄱ昱晡㐸慣攱㜷㌲㥡挳㝤㕡㍣㈲㕡ㅤ攳捥㡦㐶ㄳ戱㠶昹〵攸㜶ち搰愸㠵ぢ㉡ㅡㅢ㥢敡ㄷ昳㌸慡㡣搶搵㑤㠹搶捡㑥慦ㅦ搱㤸㥣ㅣ㐹搴㌷㜶慤㈷㝥搱㐴戴愱㍡摡搸扤㝥攴搲敡㘸㥤愵搸㤸㕢㍦㍤㤲㤸ㄸ愹㡦㘶戳搰愳摥摣㠷㘳㙢愲つ挹㔸㜲㔹户晡㘹㡤搱㈹㤱㠶昹㔱慡攴搴㡦㙥㡡搵愸散㙣晣㝢㍡敤敦搶㌳搹㔱攸㑦㝤攵㠲㐸㈲㈹㌵敥挲㠰㥢慥敤㜰㤱㈸㔲晡挵㐳㉡捦搱㡡晢慣㉡㔶㝦㐴㌴搱㄰慤愳ㄳ敥挹㈱づ㈵〱挸摣て㉤㐸改㜰戸㤷㔴ㄷ㙢昰㌱ㄶ㝡昱收㠱ㄴ㑣㑤挴㄰㘶㔳㕤㈴㌱㜴㐲慣㘱㔸㔱㈱戶愱攳㘳㡢愲㜵戱㘸㘳搲慡㑦㠸㉣ㅤ㔶㐴㤱搱ㅦ㙤㡣〱㙣扤㉦挸扥ㄳ户㕥戳㌰㕡摦戰昵㠶扣攳㈳㜹㠸扣㘶㐹㈴ㄱ捤㡢攴㌵挶㙢㤳㔲慣ㅣ㘳っ㘴㤳㝣㄰㤵晤㍡㑥〸昶㙥㜰㔰㘶捤㠹㘴捤㤹㤷㌵愷㍡㙢㑥㑤搶㥣㘸搶㥣摡慣㌹昳戳收㉣挸㥡ㄳ换㥡戳㌰㙢捥㈲攸攸㉤户㜳攷㉣㙢㝢㌴搴戳摢慡捦敦㍥㘲攳换慢㜶㕤搵㘵晡㍡挵㜳〰てㅣ敦晥㈰㘳ㅤ㘱〵挲㘵愱㘰㠹㉤㉥㤳㔱㄰㉥〹ㄴ㤵㤵ㄴ〵挲㠱戲愱っ㌲㔰ㄶ㉥㉡㈹㉢〸ㄵ㠵㡢㡢㡡换㐲愵㘵〱㘳㄰捣ㄹ㠳㘹昸〰㤰摥㤳ㄳ㕢慦㘹㙥搸㝡㑢㕥㘳㕤搳戶㉤昳㤶攵㈱挲㈱㔴ㄹち愲搴㡢㠸㤰㔱㥥㌹㝡挳㡥慢㍦㥥㌹收扣㤷㥢搷慥ㅦ戵昷换㡡㘷㈷改㕥〱ち㘳ㅣ摤ぢ㤶㤴〵㐲戶摥㐹扤愰㌰㄰ちㄶ㤶㠵㐲攱攲搲㠰昴㉥㔸㔶㔲㔸㕣㄰ちㄴ㤷ㄴㄵㄶ㤵〵㜱㜲㌱づ愲敢㐲㄰㙦〰㘴慦㡡愶㥡㔸ㄲ昸㙦扤昷㤱㜳愳㐹㐷㌷㠳搴㉤〲㔱敡㘹慢㥢〵㌳㝢㑦攸㝡攲㕤攵㔷つ㍣改搵扡㈹敢㍥㔴㍣㝦㑡㌷㡢㔱ㄸ散攸㘶愰愰搸搶㐹搶〴戳㠲㤲㘲愳㠴戶挳㈰摥㔲㤰㝤㐶㐴戶㥤㤱㜷㝣㕥㐳戴㍥摥ㅣ㑢挶ㅢ㤳戱扣㐱㡢攳挷㐷敢ㄷ㌵つ㈶㘲㘵㔴㍦ㄸ㐴愹㙤㔶㔷㡥㥥㜲搱㌳挶戱晦ㅡ㝤摢搵戳慥㜸昴㤸㕦㡢ㄵ捦攲搲㤵㐳㔱㜰㈲ㄶ㈸っ㤷愴㜴㠶昵〲挰㔳㔲㕡ㄴづ㤷ㄵㄶ㤹㠸〵〲愵愱㘰㐱愰愴㈴㔸ㅣ〴㙣㘵㐵㈱㘳ㄸ㕤ㅦ〶攲ㅤづ攲㥢ㅡ慤㡢搶挶ㅢ搸愹㜲㑡㉡㐰㤴摡㘲㜵慡昷ㄷ㈳㔷ㅥ㔴戰㜴挲㤵㥢㕦ㄸ昱昳㐱扤ㅢㄴ㑦㌰搲愹㑡ㄴ愶㌹昰〹㤶㠴ち㡡换㠲愵㈵挱挲挲㘰㘱㌰ㄴっ摡攰ち㤶ㄵㄵ㤴㤵〵ぢ㑢㑡㜱㔴〵㡡㑡ぢ㑤昴㡡㠲㐵〵㐵㘵㠱㘰戸㌸㕣㕡ㄸ㉣づ㤴㠶㡤ㄱ散挷㐸㄰敦㈸㤶㉡愳つ㤱扣愹戱㐹㐱㘳㌴慢㘳㐰㤴扡挷敡攰愶ㄷ㙡戶㙤扢昰换㜱户ㅥ㍡㜶昵攲晦㝥摢愳㜸挵㤳づ㡥㐳挱搹挱㐰㔱㐱㈸ㄴ〸㤶ㄴ〷㡡㡢〱㔸㈸㙣㍦攸〲愱〲攰ㄳ㉥㉡㉢㉣〹〴㜰愴㤵〶捤摤㕢㔲㄰ち㤶〶〳㌸昸挲㐵挴㌰㘰ㅣ挱㝥㡣〷昱㑥〰改㍣㍤㕥ㄳ㈱㝥ㄳ挹㥥〴愲搴敤㔶昷〶捦㍤㈰戸散愹㤳㉢捥㍦扢换㔱㈳户晤晣愱攲戵㔸扡㜷㈴ち㐷㍢昰㉢㉣㈸挴搱㕥〴㈰㡡㡡㑡〳㜸㉦つ搹昷㌱挵㘵攱挲搲㤲㜰㘱㈸㠸ㄱㅡち㠶捤扤っ㐱㜱愸㈴㕣㔶㕣ㄴづ㤵㤴愰愷㘱㘳ち晢㔲〵攲㥤ち搲㝤㈶㑦㔲户攴㉤慥㕢㈶㝢㝡ㅡ愵搳㐱㤴扡挱敡㘹散挶捤ㅦ搵敤搸㌰敥昶挶愳㔶ㅤ㌴愳敡㈴搵〵㘲改改㔱㈸㡣㜶昴㌴ㅣ〸㠷㙤晢㤶搵㠲㐲㜴慢戸戸戴㌸㠸㍤㕣㈲搰㠵㑢换㐲〵攱㜰戸ㄸ㈳戹〸摤ぢ㠷㡤愳改㜹㈶㠸㜷ㄶ㐸㤷戱つ㐹㥥搴㤳㠴敦ㄸ㡡㘶㠳㈸戵摥敡搴㠹つ㙦捣㕥搶晦㥣㈳㉥敤㝢㘱户晦㥡戱㜱愱攲つ㡣㜴㙡づち捥扤ㅢ㉣㉡㉤㈹㈰㜶㠱搲ㄲㅣ㕥㈵㈱晢〹て㍢㍤㔸㔰㔸㔸㔴㔲ㅡ挶㜱㔹ㅡ㉡㌳て扦㘰㔹㈰㕣㄰㉣っ㐱㍤㠰挳愲㈸㔴㘴捣㠵㘹㈳〲攲㥤〷攲㥢捣㘱ㅢ㕤挴ㅥ㔶㔳㔲〳愲搴㕡慢㠷㔹㤵㥢㙥愸摡㝦挷戸〷㠲㡢ㅦ㌰㕥攸扢户攲摤㤵昴戰ㄶ㠵愹づ搸攰㤷攷搶愲㘰〹㝡ㄳ〸㤷ㄴ摡㐱㉣ち㤴㘰〷〷㜰㔰ㄶㄶ㠷㜱ㅥづ〹㠶㌸㈲ぢ㑡㐲挵㈵挱㐰愸〴㈳扢㌰ㅣ㌲收戳ㅢぢ㐰扣㌱㤶㘴㝣捣㑣㘰㝣㉣㘴㜵ㄱ㠸㔲㤷㔸晤㔳㙦攵扦搸㙦昱㝥攵慢晦敢㠰㈱晢㥦昱搹摦ㄴ㙦晣愴㝦昵㈸㔴㌹晡ㄷ㉡㉣ち〷ちち㠳㠱愲㐰〸搷〴㠰㘵摢挹愱㔰㘹㜱㐹㐱〹捥㉤愱戲挲㜰㔹㤱㜴㉦㠴㈱ㄳ㉣挰戵愲愸戴愸慣㌴ㅣっ㤶ㄸつ散㐵ㅣ挴扢ㄸ愴敦昸挸扣㜸㈲㠲㝢㐳ㅥ㠰㐹㕣㔳攵㤲㜱ㅣ㤵ㄲ㈰㑡㥤㙢㜵㜵换㤰愷㕦ㄹ昸昴㥦挶摦㜷捥愳挱㈹挱捤晦㔴扣㍤㤵慥㈶㔱㜰㜶㌵㄰っ攰㉣㔲㔰㔸㔲㠴㉢㕢㌱扡ㅢ戰㜵ㄵ晢戱㌸㡣㔱ㄱづㄴ㠶挲ㄸ㉡搶挵㉤㠴㌳っ㡦搳搲㐰㌱〶㜸㈰㙣㌴戱ㄷ捤㈰摥㈵㈰㝤㉢搱扢戸㕣摣ㅡ戶㕥戳愸㉥㔲㈳㕤㕤㑡愵㘵㈰㑡㥤㙥㜵㌵昶晣㡥昹昹㠷㐵㉢㔷㝥晤昶搹㤱㕦ㄷㅥ㥢挳㥢攸㈲户ㅢㄲ攷扤捥㈸摣㈳㔷㐷ㅡ㤳搶㙤ㄸ捦昱扦敦㕤㕡晢㌷㘹愳ㄲ搵晦晢㌷㘹㜰昲扢摣愴ㄹ㈷㄰晤攵㈰摥ㄳ㐱㝣㡦㥣㔳㌵㈶㙦昲㔸㡥挶㤳㈸㔹〱愲搴㑡㙢扦扣㜵搰㐴捦搵㝤㜲㐷慦搹晡攱ㄷ搳摥敡戴㕥昱㜳㡤ㅣ㐲慢㔰㜰摥敢〵㑡㔳敦昵㜰搵挲扤ㅦ㉦改㐱ㄶ㡤㤳改攰ㄴ㄰敦愹㈰扢㙥扤扣㈶㠱㍢㥥〸㙥昵戶慤搹㝡换昱㔱ㅥ搰攸挷㘹㔴㍢ㅤ㐴愹㘵㔶㍦㉥摡慢昴昹戵摤㌷㡣扢㜰攳㝦㉥㝢敥㡢愵㌳ㄵ㍦㕡㐹㍦捥㐰挱㜹摥㉡㉡〸攲慡㔴㠶㤳㤶㥣㍥㡢㌰昲㙤㌷愰戸愸攳愴㕥㡣ぢ㘷戰㄰㌷㐲㈱昳㔸挶戵㤴愷慢㐰ㄸ㘷摢㈰挶㐰㐹挸㌸㤳晤㌸ぢ挴㝢㌶㐸户㤱㜵搱㐵挹㙤㙢㘲戸㜸愲㤳攷㔰㜸㉥㠸㔲〹慢㤳㥢昶㌹㙦搵㐷敢㜶㤴㕦戸晦摦㙦㝤㜶挷㠴攵㡡ㅦ晤愴㤳攷愳㌰搲㜱㙡㈸㉤挳挵愶戵㕢慣ㄶ攰㉡㔵㔸㔲㠶搱㘴㥤敦ㄹ㐲㐱㈸㡣㙢㌸㉥㐶攱㔰〸㥤扡㠰㝥㉦〴昱㕥〴搲愷攵敥㌱ㄱ攵㍤㜷㜵㤴㝤扢㤸㍡㤷㠰㈸戵挸敡摢挷摢ㅥ晦攸扣改て㡥戹愸㘴昰慣昷㍤戱㐷ㄵ㍦㤱㑡摦㉥㐵攱㈰㐷摦㌰搲〳昶㕢つ戳捥ㅤ挹㔲㔱搰昸㌳㍤㕣〶攲㕤〳搲捦敤敥㙣㕥㔳㑤扣㜹㤹摣㥣㕤㑥敤戵㈰㑡搵㔸晤戹敦敡扦晤㕣㜶攸㝤愳㉦㍦慢攴慢㜰戴攴㐵挵て挷搲㥦㉢㔱㌸㈴慤㍦戸㔱戰㠱㔵㠸ㄳ愴ㅣ㔷㈸攰捡㘳摦㡡㡤慢攸㙤ㅤ㠸昷㙡㤰摤㈷搵㌴挷㜱摥㌹㍥㔲晦挸摡挶㘴㐳愴㌹㤲挴ㅤㅡ㘱扡㠶㡡敢㐱㤴㥡㙤㜵㙢攱㈹㍦慥昸换攴㡦换搷㤷扤㜸搶㡣攳ㄲ㘱戵ぢ挴搲慤敢㔰㜰摥㌳捡㘹搲晥攱挶㘴攰昲ㄲ㉥挴ㄵ㌰㔴㘸㝤〸〸攲㔶戲㌸㔰㄰づ〴㜰㐵挷ㄶ㌴㌶搰昵昵㈰摥扦㠰昴㥥㜰㍣戰挲㘷ㅥ晢㔹昲慦㔴戹〱㐴愹改㔶敦扥扦㕢晤扣敡㠹攴㤸㔳㝥搸戲摢散摤摥搸愴㌸㡦㈰扤扢〹〵攷㘸㉣㤳搱搷㝡㠴㤹㜵敥挴㌲ㄶ㡤㥢改攰ㄶ㄰敦慤㈰扢㑣㡥㉦㡣㙤扢㈶昹挸㕡㡥㐲㜳攷ㄱ愴摢愸㜵㍢㠸㔲㤳慣㙥っ㉥扥敡㌱昵挳捡挳敦㍡昳搰捦㉦捣晥攰㑡戵ㅢ挴搲㡤㍢㔰㐸ㅦ㡣㐵戸㘸攰㉥ㄵ攷㠰㘰㜱㌸㔴㕡㘴摢㤱㐵〵㈵㘱〸捡㜰ㅤ〹ㄶㄷ㤶㜲㉦戳㠳㈱㕣户㜱敢ㅤ㠴っㅦ㔶昰㔱㈶㙣㙣㘴㍦敥〴昱摥〵㤲㌳攳〸㜶敥㙥㌲敦〱㔱㙡㡣搵戹攵攷㍦㝡敢㘱㘵㔹㈳搶㜴昹攵愹㡤㐷㌴㍦愱㜶㠷㔸㍡昷㌷ㄴ㥣㥤攳挷㌵摣愴攲㈶戴戰〴㌷摡戸〴摡㍡㠷㥢挵戲〲摣㝤ㄷ㠷㡡㜱㙢㠱㝢㙣昳㑣㔱㔶㠴捦㑣㘵戸愴㤷㤵㤵㤴愱㥢㐵㘱攳㕥昶攳㍥㄰敦㘶㤰慥搳户摥摦㤸㡣㌴攳捣㠶㍥摥㑦搹ㄶ㄰愵㉡慣㍥㥥㜲捤挵ㅦ捦㍣戴㕢挵㝤搳敦㌹㉣㜷挵㘵㜷慢㍤㈰㤶㍥㍥㠸㠲昳搶㔰㍥㔹摡扡㈵㜵攰愶㍦㘹㕡㜷搵晣愰㔹㔰搶晡㐱戳挸㜸〸挶㡣㠷㐱扣㕢㐱昶攲〷㤳㐵昱晡愶㠶搸愲挸㈳攷㜲㉦摢㍥㜱㍥㐲摤㙤㈰㑡ㅤ㙣昵昲摡㠷㐲户ㄴ㙣扦㘰摣愹㕦㕤㌵㝦慢攷散㔷搴㥥㄰㑢㉦ㅦ㐳挱㜹晢昰扢摣改㍣捥㕥㍣〱攲㝤ㄲ㘴昷〹㤱挴愲㘸ㄲ㤳㌵㜹㤱扣ㅡ㑣攸㈵㘲昳㥡捣㌳摣㔳㔴㝣ㅡ㐴愹㈲慢扢㍦㘷㥤㌱慢搳攰㐹ㄳ㉥㡢ㅦ㜸搱搰扦摣㤸攸晡㉣挴㐷㕡㔳ㄴ㈳ㄲ㤱㈵戰搳㍡㥦㠴㕢㔷晥戵㍦㤱㠶㜹戴摡攲摡㜰㙤㈰㔰㔳㕣ㄸ㈹㡡攴昴㠷搹摦㍡㘳挳扢㤸慥戵㌳㘲つ㌵昱㈵㌲㠵戳搷攱㤱挶㘸敢捤挲㄰㑢㜶㜸扣愹愱愶㜱㑦㜷㘱㔵ㄲ㘷慣㍤㥣戲㔶㈳㘹捤慡㌰挱ㄵ㙤ㄴ㝦晤㥣捤愶㐷敡㥡愲ㄵ㑢㘳愶㜸㙦㠷ㄸ搳㕢昱㜹㤹愵愳ㄲ搱攳㕡愴㘹㍤慡挰晣㙢戳搸㑥㡢搲ㄴ㤹晤捡慢㕣㄰㙦㡣㌶㐸昷㠶搴㑦㡥㔵㉦㡡㈶慡㜰㘸㔶㈷愳㌵ㄲ㙡㕦㡡慣㌹戶㈱㤳ㅡ㄰㈸㘶捤㙡〶搸戹戵㈳㤷㈶愳つ㌵搱ㅡ昴㜷㜱㌴㤱㕣㌶㌵㌲慦㉥扡㑢㡡㡡改ㄳ㠲摤㔳搸愳攲搵㑤㡤㤵昱㠶㘴㈲㕥㤷㉡愹愸㘹㡥㘰㕥慦㘶㐲扣㈶㡡㘹戹㙣㙥ㅥ攵改搴㐹㈹捦〱㙥户愲戴摢㔸㈰㍢挲戶㡢昷挶㍥摦㉤昵戰㉢㤸㠲攸㄰㐵㕤㤴挷㘴搶挰㜶㡣㠹㕤㥡ㄹ㥣㔹搱ㄶㄳ愷扡愹㍤㈸戳戶昴戱㘵捦晤敦㉡㘷㘵昵戶愲ㅦ搹㡣戹捦㌱㤱㠶㥡扡㘸愲捤㠹㝡挵ㅥㄹ捦㠱攴ㄴ㘲㌴㘷㐴㉦ㅢㅡ㙡愹㕡㤶戳㈴㔶㤳㕣攰㕤㄰㡤捤㕦挰㡦㌲㤸捣捦捤㈵戴㘹㥢昱㍣㔸挶ぢ㈴㉦㠲昸㝣ㅥ敦㑢㔴昲晡㡣敤㘶㍤㘷〰摥㜷㝥㔶㌵ぢ慤っ㤹挵挵㤴㝢㘳㑥㍤㍥㠶㌴㜶敡攴ㄶ攵㤸㐸攳㠲㈴て捦戶㠵戴昷㌲挹㉢㈰㌹〳㐱摡㥤戴攵挷戹㙣捥㑤㜷慢ㅦㄱ慤㡤㘰㐵㐰㐶户㡡攴搴㥢㤳捣㈳愲㡤搵〶㘷愳挷㘲慣㉣昵愲㠴挱摦戵㥥㐷㝦㜴㘹㜲㐴㈴ㄹ改㕣㡦㜹㙤散㈵〳㑡㐳愴㤵㔹㘲换㙥挲搳慤㝤㔶つㄶ晣㔲戴㔹改㈲っ搳ㄲ〶づ挶㡢愷㤳㐵摢づ〲㝤攷㠷ㅡ慦昳㐰㑦㥤㥦挶戴㜹捤攸㘸挳搴㘵㡢愳㡤㔴捦昵戶〹愵㜳㜸搱搸愴敡㜹搳㤲戱扡挶〲昴㜴㜴㈲摥戴昸昷戴㐳㕢挶慢㈰㝡换搹ㅦ㐷昱㙦㡦〹㜰㜹㍡㌷㜳摦捣㤹攳挹愵㌵㜲㡣㝤㐹㜸戴挲搸慦㜸㤳捤昸〷摥㝣㙤挹㜲昲愱戱㌳㜳昹㌹搰敦㕡て㠴愶㈶愲戲㍡㤱㉢ㄵ愰摤慤㝥㐶㍣戱㘸㕥㍣扥㠸挷㔳㜷愹㌵㉥㠸㐶㤳㥣昱敦㘲慤㜰挸㑡㠶㔲㥤㍡愵捣挳摢㤶〶昶㠱㝤敦㍢㈰摤㉡敡敡昲戴挵㐶敦扢㘰㜵挲摡㠳昷㍤ㄴ㜶ㅦ戹㈸摥㄰慦挷慤挹㥣收昰ㅣ慣㑤捣ㄹ㕦㔹㔹戰戴慥戱㕥敤㡤昰㌹〳扥㈴晦扡㑤㘱敦捣ㄱ㘷㑥㜹㘱昲㤵摦扣戱㔹敤㘵〹搲㘶敥〷挱㘰㝦扣㡣て㐱搴ㅥ㔰攳㘹〵攵搴捤昸ㄸ㜵攳ㄳ㤲㝦㠲攰攴㈰㜰攳摣昰愹㔹㔵㠳昱捥昳㠳昱ㄹ挹攷㈰㙡〸〸㐷愷昱〵㠸摥㔴㑦搸攷㑥㤷ㅤ㜷〰搸改㍢敥㙢㜰㝤㐶ㅢ㌲㌵ㄴㅡ摣㜹挶㍢㈴㠴挷㈰㌴慡㌳っ扢〲攰戵〴㘹㙢〳〷愱㤹〰昰ㄳ摢㘷㐳捤ㅤ㠰㥦改攳ㄷㄲ愲㘳〳㠰㐳ㄸ㔵㔵〸戶〰㤰〵㠶搱〹㐴〵挱ㄲ〰㘴〱ㄶㄵ㙥敡愷㕦㙣〰〴挰㐹〷㈰㤷㌶㡤㌶㘴慡〸敤摣〰昸ち挶㕤〱昸户㈵㐸㕢㜵㈸㠱愵晥散㐵㑦㜶昹ぢ愸戹〳搰ㅢ㘲愳て㐹㕦㄰ㅢ〰扢㥡㔵ㄵ㠶ㄱ〱㘰㌷㉡敤づ愲捡挰ㄲ〰昶㐰㑤㙦敡㐳㍢〰愵㘰愷〳搰㡦㌶㡤㌶㘴敡㘰戴㜳〳攰㡤㑣〰扣㙥〹搲搶㍡㠶挱㔲㝦昶㘲㝦㜶昹搵㡣〰っ㠶搸㌸㠰㘴〸㠸つ㠰〳捤慡㍡っ㐶〴㠰〲㉡ㅤ〴愲捡挱ㄲ〰ち㔱搳㥢㝡捥づ挰㜰戰搳〱〸搱愶搱㠶㑣㔵愰㥤ㅢ〰摢㌲〱昰㠸㈵㐸㕢㔷ㄹ〱㑢晤搹㡢㘱㜰慡ㅥ捥〸挰㜰㠸㡤㜲㤲ち㄰ㅢ〰㤵㘶㔵㡤㠴ㄱ〱㘰〴㤵㐶㠲愸搱㘰〹〰愳㔰搳㥢晡㥢ㅤ〰㔹㘸㐹㍢㜹㡦愳㑤愳つ㤹ㅡ〳㜳㙥〰摣㤶〹㠰㕢㉤㐱摡扡捤ㄱ戰搴ㅦ㉦愳㡡㕤扥㌹㈳〰搳㈰㌶愶㤳捣〰戱〱㜰戴㔹㔵攳㘱㐴〰㤸㐹愵㔹㈰㙡㈲㔸〲挰㌱愸改㑤㕤㙢〷㘰〲搸改㐷挰㕣摡㌴摡㤰愹㐹㘸攷〶挰㥡㑣〰㕣㘶〹搲㔶㠶愶挰㔲㝦昶㈲挶㉥㕦㥡ㄱ㠰㐵㄰ㅢ㜵㈴昵㈰㌶〰攲㘶㔵㔵挱㠸〰戰㤸㑡挷㠱愸㘹㘰〹〰〹搴昴愶捥戵〳㌰ㄵ散㜴〰㥡㘹搳㘸㐳愶愶愳㥤ㅢ〰愷㘴〲攰㘴㑢㤰戶攰㜴㌴㉣昵㘷㉦㔶戰换㉢㌳〲戰ち㘲攳㘴㤲㔳㐰㙣〰㥣㘶㔶搵㑣ㄸㄱ〰㑥愷搲㥦㐰ㄴ搷㤶〴㠰㌳㔰搳㥢㕡㘲〷㘰ㄶ搸改〰㥣㐳㥢㐶ㅢ㌲㌵ㅢ敤摣〰愸捦〴㐰㥤㈵㐸㕢摣㥡ぢ㑢晤搹㡢搵散昲挲㡣〰晣ㄹ㘲攳㌲㤲㌵㈰㌶〰搶㥡㔵ㄵ㠱ㄱ〱攰ち㉡㕤〹愲慡挱ㄲ〰慥㐲㑤㙦㉡㘲〷㘰ㅥ搸改〰慣㠷扥捦㘸㐳愶㙡搰捥つ㠰ㄹ㤹〰㤸㙥〹搲搶捥收挳㔲㝦昶攲㈶㜶㜹㙡㐶〰㙥㠱搸戸㤵攴㌶㄰ㅢ〰晦㘵㔶搵〲ㄸㄱ〰敥愰搲㐶㄰戵㄰㉣〱攰㑥搴昴愶㡥戰〳㄰〳㍢ㅤ㠰㑤戴㘹戴㈱㔳㡢搰捥つ㠰㡡㑣〰㤴㕢㠲戴挵戹〶㔸敡捦㕥㍣挴㉥ㅦ㤶ㄱ㠰慤㄰ㅢ㡦㤰㙣〳戱〱昰㤸㔹㔵㜱ㄸㄱ〰ㅥ愷搲ㄳ㈰敡㌸戰〴㠰㈷㔱搳㥢㉡戶〳戰ㄸ散㜴〰㥥愵㑤愳つ㤹㑡愰㥤ㅢ〰㐳㌲〱㜰㠰㈵㐸㕢昲㙢㠲愵晥散挵㉢散昲愰㡣〰扣〶戱昱㍡挹ㅢ㈰㌶〰摥㌴慢慡ㄹ㐶〴㠰户愸昴㌶㠸㕡ち㤶〰昰づ㙡㝡㔳晢搸〱㔸〲㜶㍡〰ㅦ搰愶搱㠶㑣㉤㐳㍢㌷〰晡㘶〲愰㡦㈵㐸㕢㐸㍣〱㤶摡㤸慥㑢㔹扢敢〳摤㤴改扡慥戵愳㘲㜵㔸㔰㤷ㄹ㤹ㅥ戵㜸㌳㔳挸愴摥㡤戳㔰㠹㐸戵㤹㥣搵愷戶ㄲㄳ㔱挸㔹㑢㉥㤳搹ㄶ㔱㐹㥢〸㌳攷㠹晥㙦扡敦て㌷摤㈷㤳㝤㈹㔳㝥㙤㑣愷攱愰㜱㑣昸戵慤㙣㍢㠸㌸搳攵晡攱㕣㡥㤷〲㔸㑥㍤挸愸敦㥣㐹㤰挴扣ㄶ㝤晢㐱㐸敤挲捣搳㠰㍣搸搳て㔲㌶捡㌸攵昶㉣㠴晦㌷㘱改捣㉣㌶㈷㉣㍦攷㤹昰ぢ㤲㉦㐹晥㑤昲ㄵ㠸敡㙥㥤㘶㡦挸昱㜸戶㘴㜹㍣㌷㠰㜹㉣㕥ㅥ攳ㅢ敡㝣㑢昲ㅤ㠸敤㌴晢㍤慡摥ㅦ挸㤳戳㐷ㅥ㈷扢㝣㑡㜱㥤㕥捥扡㍦戲捤づ㤰慥㍦㠱㑣ㅣㄳ慤挳扣昷敦㤵挸㥢㜳ㄲ摣戴㍤㔳㠷㐳愷ㄷ㤴㜶愹慦㕡搶㔰扤㈰ㄱ㙦㐰㍡㌵㈷㄰㉢慡㤱〹摢愸㈲摥晡昱昱捡愶愴户㝥㑣っ㙦㕤敢愷㐴ㄷ㐷㈳挹㑡慣㙢㘰㜶㜲㍣昲㌳㘴敥㜱㙣捤搲晦㥦㜳㤳㥥㙣㠴攰㔱〰㔰㑦㑦㉡攷挰㌵㘷〹㉤㜸ぢ㐶挴㤱㔵ㅤ㤵㠴㜲挲敥昵㘲㥥昹て㌸昹攸㌱晥㠳摥慤晢敡挶㐳昲慦扣敤㔷敢㝤〵㘶㝤㘴㌳㑥㐴搰改ㄷ㘱捥㔵昹摡㤲愹ㄵ㘸搷㜲ㄱ昶㘶攳㐰敥㠴挳挰㥣㤳摡昱㜳㠶㈹㤹ㅦ㉤㐱㕡收挸挹戰搶㥦㍤挹㠵㈱昵㍤搴摣愷㘴㝣㄰ㅢ㕤㐸扡㠲搸㠶㐸㜷戳慡㑥㠱㤱〱㌴搴㠳㑡㑣摣㔷愷愱㉡㜷㈲㍤㔱搳㥢晡〲㍥㕡㈶攵㑥〵㍢ㅤ㠴扥搰昷ㄹ㙤挸ㄴ昳㔰㕡㐰㌰摥愵㤵昷㐰搴〷㤹〰㜸摦ㄲ愴愵慣㥣㠹㘶〲㐰㍦㜶昹摤㡣〰攴㐱㙣昴㈷ㄹ〰㘲〳㘰愰㔹㔵㘷挱搰〰㜶㈴㥦㑡晢㠱愸㜳㔰ㄵ〰昶㐷㑤㙦敡㔵㍢〰㘷㠳㥤づ挰㄰攸晢㡣㌶㘴敡㕣戴㜳〳攰搹㑣〰㍣㘳〹搲搲㘱㉥㠰㈵〱㈰挴㉥㍦㤵ㄱ㠰ㄲ㠸㡤㌰㐹㈹㝢搷㍡㉤㝢戰㔹㔵ㄷ挲搰〰㠶㜳〸㤵づ〵㔱ㄷ愳㉡〰っ㐳㑤㙦敡㘱㍢〰ㄷ㠱㥤づ㐰〵昴㝤㐶ㅢ㌲㜵〹摡戹〱戰㈹ㄳ〰昷㔸㠲戴㥣㥢㍦挳㤲〰㌰㡥㕤扥㉢㈳〰攳㈱㌶㈶㤰㑣㘴敦㕡〱㤸㙣㔶搵㘵㌰㌴㠰攱ㅣ㐹愵㈹㈰敡㜲㔴〵㠰㉡搴昴愶㙥戶〳戰〶散㜴〰㘶㐰摦㘷戴㈱㔳㙢搱捥つ㠰昵㤹〰戸挶ㄲ愴㈵昹㕣〵㑢〲挰㕣㜶㜹㕤㐶〰收㐱㙣㔴㤳搴戰㜷慤〰搴㥡㔵戵づ㠶〶㌰㥣昹㔴㕡〰愲慥㐱㔵〰㠸愱愶㌷㜵愹ㅤ㠰慢挱㑥〷愰ㅥ晡㍥愳つ㤹㕡㡦㜶㙥〰㥣㤳〹㠰戳㉤㐱㕡㍡搱〶㔸ㄲ〰㥡搹攵㌳㌳〲戰ㄴ㘲㘳ㄹ挹昱㈰㌶〰㤶㥢㔵挵摣愱〱㜸ㄹ㈷㔲改㈴㄰昵㔷㔴〵㠰ㄵ愸改㑤慤戴〳昰ㄷ戰搳〱㌸〵晡㍥愳つ㤹扡〱敤摣〰㘸捥〴㐰㤳㈵㐸换㔸扡ㄹ㤶〴㠰㜳搸攵挶㡣〰㥣〷戱㜱㍥挹〵散㕤敢ㄱ㜰㤱㔹㔵户挰搰〰㠶㜳㌱㤵㉥〱㔱户愱㉡〰慣㐶㑤㙦㙡愱ㅤ㠰㕢挱㑥〷㘰つ昴㝤㐶ㅢ㌲㜵㍢摡戹〱㌰㌷ㄳ〰㜳㉣㐱㕡慥搴㐶㔸ㄲ〰搶戳换戳㌳〲㜰ㅤ挴挶〶㤲敢搹扢㔶〰晥㙡㔶搵㥤㌰㌴㠰攱摣㐰愵ㅢ㐱搴摤愸ち〰㌷愱愶㌷㌵搵づ〰㤳愷搲〱戸つ晡㍥愳つ㤹扡〷敤摣〰ㄸ㤷〹㠰戱㤶㈰㉤ㅦ敢㕥㔸ㄲ〰㌶戱换愳㌳〲㜰㉦挴挶㝤㈴㥢搹扢㔶〰㜸㐷㡤慡扡て㠶〶㌰㥣〷愸昴㈰㠸扡ㅦ㔵〱攰㈱搴昴愶づ戳〳挰〴慤㜴〰戶㐱摦㘷戴㈱㔳㕢搰捥つ㠰㔰㈶〰㡡㉣㐱㕡戲搷㐳戰㈴〰㍣换㉥〷㌲〲昰㜷㠸㡤攷㐹㕥㘰敦㕡〱㜸挹慣慡㠷㘱㘸〰挳搹づ㠶昱㌲㠸㝡〴㔵〱攰ㄵ搴昴愶〶搹〱搸ち㜶㍡〰㙦㐰摦㘷戴㈱㔳摢搰捥つ㠰㝥㤹〰搸摢ㄲ愴攵㤱㍤づ㑢〲挰〷散昲㥥ㄹ〱昸〸㘲攳㘳㤲㑦搸扢㔶〰晥㘵㔶搵ㄳ㌰㌴㠰攱㝣㑡愵捦㐰搴㔳愸ち〰㥦愳愶㌷搵换づ挰㤳㘰愷〳昰ㄵ昴㝤㐶ㅢ㌲昵㌴摡戹〱㤰㥢〹㠰捥㤶挰㤹㤹㤶昳ㅣ㉣敤㐴㐶㔱ㄷ㜶戸㜶㝡㉣扡㠴㥦ち扢搷攲㥢㠴㤵㑤㐸慣㤷㝣㡤㙥戵㈳攲ㄳ攳挹ㄱ戱挶挵㜵㤱㘵扤㙢慤挲㡣〵搱〶㘴㔳㈵㤰㔴攵攰挵ㄷ㉦㡥搶ㄸ戵㔵昱愶㐴㜵㜴散㠸㍦㐲戶ㄵ攲挳慥㤳㐴慢㉣㠵慤㘳〹㐴ㅥ戴挴㔱㠲捤㤳昳㍣っ㍡昳㐰㙣搳㈶慤㌳㜴㝥㈸昶㘸㐵㜴㙡㉣㔹ㄷ敤㔲㉢㜲㈹攷搶〲㐵愴愸搵㜴慥㥤扡〰昹ㄱ㈳扡搵㡥㑥挴㙡敡㘲つ㔱敥っ捣晡昱敢㤹攳愳昳㤱㡥㌶㌹摥ㄸ攳㔷㐷扢搵㑥㑤㐴ㅡㅡㄷ㌳戳愶㝡㔹慦㤴㥡㝣っ捥愹㍤㍣搶搰〸㌷戲ㄷ㔹敥㔱㕢戵㈰扥〴摦㘲㙥慡㙦ㄸㅤ㔹摣昸㠷搸㉢㡡扢㐵㌶搹㌵㉡㑢㘵㘵愹摣慣摣㡥敥ㅦ敦づ㡣戱㕤㕢㔳扢昳㜰慣㑡㑥㈷㐱ㄳ㍦㐱搰㙣ㄲ搹㡦㥥㥣ㄷ㔰㙡㘳昶㡢㜳㘰㔶愲㈰㤳攰搸摦㤴敦㝥戸收㘳戵㝣㍤㥣昳㕥挶㑦攸㔲搷晦㠰㡣ㅢ㍤㙤㙣㙢㝡攸晦攸扢搶㌹㉦挲戲㜳㘲挱㜹昴戵㘴攳昵㠵㜲㜷昳㌰㈲㡦㐷ㄵ㐶㈷㡥〶搶㥣㠷愶慦㔶㜴㜸㤴㜶㙦㉤㡥㐲㐲㔷搷㕡㝣㉦㈸㕡㠷㍣戴晡㐸戲扢㔹攱㑣㘰㝤愴慥搱㤲㔵挶敢敢㈳㍣散㜸挸㔶㔵㐷敡愲戹戵ㄵ㑤挹㌸扥愶㙢搴㠲挸戱㘹戱㈲㑢挱㡡㉣ㄵ㔶搷摡㈹捣㑦㤵㌲㙤挵攷㐷ㄲ戱攴㠲晡㔸㜵㉥㉢捣㈱晤㐳ㅣ慦㌸㠷㘴〳㑣扤改昳㠹㜳㘲换㥣攲挱敥㉥挰㈴㉥愱攳敥挷㔱㥤愵扣昸㔳ㅤ㑣㕦挴搹㐷㉥㉡挶㉦戰㤶㠳㤷㥣㡥愴㉦晦收㔴ぢ户㝦㜳㈱㔶㑥㔰㙡㍢慡攴ㅡ扦㐲㤵〵扥戲㕦〶㘹㌳户慤㌳ㄴ㝣攳攳㤱㥡㔱㔸㜷㠸㈷㍡㕢捦〶挸挵慥攵改㈶攱㘷戶㘱㈵ㄲ㔸㤱ㄸ摢ㅣ慢㠹㈶㜲挹愸挲㘴㕤㌶昳ㄴ扤收㍥挴㐴㑥㈷㑦㑥㑥㤷㕣㌷㕦㘳戵慤㠱㔶づ㤷晤搹ち㘳搳散㝦㜶㘴㈹ㄳ㍡㄰㤶㕣愶㤸㈰㙥㈸㄰昵ち㤸㡣挷愱㤰㐵〵戸昷攴扣ち愱㜳摦愴㈶晥㈱㍤搰㠰㔲戶㝣慢㥥㈹㠹戹㐸摦㤳㕣挶ㅣ〹愴㡢㉤〷搱㙢愶ㅦ收敡慦敡㝢慢㜰㤴㐷㙢㝣收㌹㤶㔳㤵戸㍡㜸戲戲戲戱慢扤捥〵愱㌴户㌰㔶㕦ㄵ㤵攴㐴搵て㕤昰㘶愳挷㠳㌸㔸㘰㝦㑥㝢㕦㔲㑦扢扢昰昹っ㉦っ㜸㝣敡ㅦ愰ㅡ㤵敥攴㤸戰㜵㈶㉡戹㈰敡㐳㌰㜹㝦㘰扢㥡愹㡦㔱攵ㄵ捤攳攵搳㈹㜶收っ慡㍥㐱㉢㥥㐵つㅦ㡤晦ㄳ㈵㥥㥣㕡づ搶慥攰戶㝦戰㝥捡ㄶ㜸ㄹ摤㘸挴慡愸捦㔰搰愱愰愸㐳改づㅤ愳〷ㄵ㍦㜷㔷昰㔳愱㈷ㄵ扥㠰〲㡦〲㙦㉦搴㜶搳攸戶㝣愵挹晡㝡㠲ㅢ㥡㝤搰〰㘸㝥㙤昳搰㠳ㅣㄳ捤扥昴戰ぢ㍤晣〴愶ㄳ捤㥦挱㌳搱摣ㄵ㉡㍢㠵收㉦㘸㉡㘸敥㐶攳扦愲㤶㠲收ㅥ攰戶㡦㈶㡦㐳㐱㜳㑦ㅡ㠱つ㜹㌱挱捥〵捤扤愰㘳散㑤挵㑥敥ち晤愸戰てㄵ戲愱㈰㘸收愱搶㕦愳㤹昱ぢ晣㙥戰づ㐰㑢挰捡㑣㍤摤ㄷ摢㐱扡㉦㕤つ愴㉢㘶搵㌹㘱㘵㉡㥤〹㙢㍥㔴㜶ち搶㍥㘸㉡戰敥㐷攳捣挴㑢㠱㜵㄰戸敤挳扡㉢㥡攱ㅦ㡦㔶愰ㄱつ㉢搳昶㜴㈸攰改㈳攴〰攸ㄸ㐳愸戸扢扢挲㔰㉡ㅣ㐸〵㘶昹〹慣〵愸つ搴戰扡㝤攳㑤㍦㡦挰つ搹㐲㌴〶戲㑣〱搴摤戱㈱ㅢ愰户㈰扤㌱㕤捦㠹㉣㜳昴㑣㘴㡢愰戲㔳挸㌲戳㑦㤰つ搱㌸㔳晣㔲㤰㉤〱户㝤㘴㤹ち㠸㝦捣挹搲〸ち昲㉡〰搵愱㠰愷㤱㉤㠵㡥㔱㐶㐵收ち扡㈸ㅣ㑣㠵㐳愸挰昴㐱㐱昶㔰搴㝡㘸㘴慤攷㈷戸㠱㜸ㄸ昴〰㘲挸㘶搸〶攲㜰ㅡ㉥愷㘱愶晣㌹㐱ㅣづ㥥〹㘲〵㔴㜶ち挴㜲㌴ㄵ㄰て愷昱ち搴㔲㐰ㅣ〱㙥晢㈰㌲㥤㄰晦挸㈰愴ㄱㄴ攴㌵〲搴〵愳㔱搰㌱㐶㔳㤱昹㠶㉥ち㘳愸㌰㤶ち㑣㐱ㄴ㄰挷愱搶㔵㠳挸慦戰扢㈱㌸ㅥ㑡㐰㤰㜹㠸摡慡つ挱〹戴㍡㤱㔶㤹㌳攸㐴㤰㠹㠲㈶㠲㤳愰戲㔳〸㌲扤㔰㄰㥣㑣攳㌳㔰㑢㐱㜰ち戸敤㈳㜸㌴㥡攱ㅦ〹㡤㌴愲ㄱ㘴㔲愲づ〵㍣㝤ㄸ㑥㠵㡥㌱㡤㡡戳摣ㄵ愶㔳㘱〶ㄵ㤸挳㈸〸ㅥ㠵㕡ㄷ㡤攰㤸㘰搰つ挰㤹搰〱㠰㜳㙤㐶㙤〰捥愲搱㘳㘸㤴㌹㠷㑥〰㤹㘸㘸〲㌸ㅢ㉡㍢〵㈰搳ㄳ〵挰㘳㘹㥣㜹㡡㈹〰捥〵户㝤〰㤹捦㠸㝦㡦ㄱ愱ㄱㄴ攴挵愴㐶ㄷ〰攷㐱挷愸愶㈲ㄳㅥ㕤ㄴ㙡愸㄰愵〲㜳㈰〵挰㕡搴㙣〰〶摣〰㕣〰ㅤ〰挸㍣㐸㙤搴〶㘰㡣㐶ㄷ搲㈸㙦㤵㥤〰慥〲捦〴㜰ㄱ㔴㜶ち㐰愶㌷ち㠰㜵㌴捥㍣挷ㄴ〰ㅢ挰㙤ㅦ㐰收㐳攲ㅦて㘳愰ㄱつ㈰㤳㈲㜵㈸攰改㈳㜰㌱㜴㡣攳愸挸㠴㐹ㄷ㠵〴ㄵㅡ愹挰ㅣ㑡〱㤰㡦㉣昳敢㈳㔰㍦捡挳つ挵㘶㈸〲㐵㈶㔳㙡换㌶ㄴ㤷搰昲㔲㕡㘶攲愳ㄳ挵㍦㠳㘷愲戸っ㉡㍢㠵㈲㜳㈴〵挵攳㘹㝣つ㙡㈹㈸㉥〷户㝤ㄴ搷愲ㄹ晥戱㜴㐱㈳㈸挸㡢㤹㤵㍡ㄴ昰㌴㡡㈷㐱挷㔸㐱㐵㘶㕤扡㈸慣愴挲㉡㉡㌰ㄱ㔳㔰㍣ㄹ㌵摢㘱ㄸ㜲〳昰㔴攸〰㐰㈶㘳㙡愳㍤㕡扤㥥㐶愳愷搳㈸ㄳ㈷㥤〰㌲㕢搲〴昰㑦㔰搹㈹〰㙦㐵㔳〱昰っㅡ㘷戲㘵ち㠰㘷㠱摢㍥㠰㑣捡挴扦挷㌸㥢㐶㔰㤰ㄷ㌳㌳㜵㈸攰㘹〰捦㠱㡥㜱㉥ㄵ㤹戵改愲㜰ㅥㄵ捥愷挲㥤㔰㄰〰㉦㐰捤愷て挳昱慥昸㕤〴ㄵ攰挷㕣㑥㙤搳㜶〰㕥㑣㥢㤷搰收㐳㔰㜰攲挷㘴㑢ㄳ扦搵㔰搹㈹晣ㅥ㐱㔳挱敦㔲ㅡ㘷慥㘶ち㝥㤷㠱摢㍥㝥捣改挴㍦戲㝤㘹〴〵㜹㌱戱㔳㠷〲㥥挶敦㜲攸ㄸ㙢愹挸愴㑦ㄷ㠵㉢愸㜰㈵ㄵ㤸〷㉡昸㕤㠵摡ㅥ㉤昸愵㍤慥挵敤㜸扣ㅡ㑤㠰攷戳㌶ㅦ㌶㍣慦愱㡦昵昴昱ちㄴ㥣㜸扥〶㥥㠹攷戵㔰搹㈹㍣㤹昱㈹㜸㕥㐷攳㙦愰㤶㠲攷昵攰戶㡦㈷㔳㐴昱敦㌱晥㐲㈳㈸挸㡢㜹愲㉥㜰晤ㄵ㍡挶つ㔴㝣摢㕤攱㐶㉡摣㐴㠵㜷愰㈰㜸摥㡣㕡ぢ㥥㤵㘹捦㤴㜱挳昳㔶㌴〱㥥ㅦ搸㝣搸昰扣㡤㍥㙥〷挹㘱づ㔷ㅢ㔳㜵挸㜷戱㘵晡搱㠲户㜶㕡㐳㉣㠹㔹㌴敥摦㔱戱㈴收〳扡搶㠲愰㈸㈹㜹㝢挸散㥡慤搱㤰㤶㤹晢㝤搲㐵㈹㔳昹晤搲攵昶戹晤㠱㉥㘲㜳搶摦㌶搹摦㥥㤲捣晥扢昴昱㡦戴ㅣ愰捣㍣㉤㙢㐵㐰攵㘷㑥㘸戴攱捥搹摣晦挱攲㠱ㅣ㐳ㅥ攳づㅥ㌶ち㝦㤸戱搹㠸㌲搷ㄲ扥㘸昷㄰戱攵㜷㜲ㄲ捣挷昵〴㤳搷捤㑡㈰ㅥ摢搰㠸搹㌸㥦㔵挳㕣㙢㜷慢㌸愹㈹㤹㈲㠹㉣敤㙤㐹昰㘵挹㐹つ㤸㈱慦挶㐳㄰晦㈰搳慢㠸捤㕣〹㤰㤹搲づ慥搲挰〸㌷摢愴㈸搶摤敥戴戰㘶㈲攵捥愴挷昲㥡摤㡤㜰户㘴捤收戲㌶㈱ㅡ㘹㤰扤㔰㤵慣ㄹㄱ㙤㤶㈵戳挹㔱慣㜷攱㔹㥣㜵搱摥搲愰愵㉡㔳㠹㐶㙤挵扣㐶㉣扦㈴㌹慦㙥㤵㘴愰ㅢ戵㔳愲㜵ㄱ㍥搹〰搳攰㔶㘹㜲㜵ㄲ挹攰㉤〶昸搴㠲㍦捥ㅥ〲㈲搹搶㕥㔲戲㥦扣㙤㥣摦㔲㠳攰ㄸ敡攰㕥挵㝥慢㤵敤㡢攱敡昲㌵摣㙥ㄸ敥搱〵㙢㔱㡥〹戲㙤慣收攰㕣㙢捦㘵收㐸敡慤㔳散捤㌳㥣㥣扣扡㙡ㅥ㤷㝣扡㜱㜹㉥挱㐷㠴昰昹㕦㍤㌸㜴敡㌰㈷㥥㡣㘱㜵愳㙥㔹昷摡戱つ搵㜵㑤㌵㔱㔹ㅡ搱攷㙣㔹㈱昹㐳散㉦捥搸㔹㈳慡つ㕣㉣㔰挶攲㌹挶晡㔱てㅤ㕦㈳㌵敥挲㐸㤳㤳ㅤ㙣昸㡣㝢慣㜱挷戴攵㥤㑥ㅣ昷愱昷扤㕡扦昶㈰㑦户挵愹㉤㡤挵㜳ㅡ㔳㠰㉢㜵敥戹㡣㌸㥢摡昸昸昸㌸搷㔸㙤慣㌱㌱㤳昵㠷搸㑦㠸搳摣㑤㕥㉦ㄶ㠸㍡㌶㐲㍥ㅡ㕣㍢愵㜹敥ㅤㄵ戴挵㤵愰㉤㘳㝥㔸扣捦慢㕦㘲㕡捡㕣㄰㘲㘶戸摣挴㐹㑡慥摣㐳〵愱㤸㐵㘲愹㝣ぢㄵ戹㔹晢ㅢ昶㥡㘲〲戹㜹戳㘶敥㑦攳㍥㜰摢扦㔹晢ㅥ捤昰㡦慣ㅡㅡ㐱㐱㕥㍦㠲扡摣慣摤てㅤ㘳ぢㄵ㤹㝡敥愲昰〰ㄵㅥ〴挹㘱〶戲昳㐴㤳㌱㤹ㅡつ㍣㌹昵㕣㤴挹慤攷攲ㄴ㠶愹ㄷ㡦愵㐰戲㌸ㄶ戸扣㕤㜲㤹㙣㙤㍣〴慤㘷㥥㝥㝡ㄸ㜴㌱搷㙥昳㉦搷㔸㜳愶晦㘱晡摦ち㠲㜵改昴ㅢ㘳ㅦ㜸收㡤昱㈳㔰搹愹ㅢ㘳㈶㈰ぢ搶摢㘸㥣㤹挸㈹㌷挶㡦㠱摢㍥搶摤搱っ晤昶ㄸ㡦搳〸挳攰㡢㘹换㉥㔰㍥〱ㅤ攳㐹㉡㌲愵搹㐵攱㈹㉡㍣㑤〵㘶㌹换㡤昱㌳愸攱ㄱ扤收慡㤴摢攳昴摣㙥㡤㥦㐳㈳摣ㅡ㌳昵㔹㝢戱摤ㅡ晦㥤㕥㥥愷ㄷ愶㈹㍢㍦㙡㌰㌷搹㐴昴〵愸散ㄴ愲晤搱㔴㄰㝤㤱挶㤹摡㥣㠲攸㜶㜰摢㐷㜴㈰㥡〹愲㉦搳㠸㐶㌴ㅦ㕣ㅤち㜸ㄸ㉥㍣㐴㡣㔷愰㘳扣㑡㐵收㐸扢㈸扣㐶㠵搷愹挰戴㘹㐱昴つ搴㙣㜳〷㠵㙥〰扥〹ㅤ〰挸搴㘹㙤搴〶攰㕢㌴晡㌶㡤㌲捤搹〹㈰㜳㥢㑤〰摦㠱捡㑥〱挸㡣㘸〱昰㕤ㅡ㘷㙡㜴ち㠰敦㠳摢㍥㠰㑣愱ㄶ〰㍦愰ㄱ挴㈱㉦收㔱敢㔰挰搳〰㝥〸ㅤ攳㈳㉡ㅥ敡慥昰㌱ㄵ㍥愱〲搳慥〵挰㝦愲戶扢㍥㈴㕢㤶昲昴搳〹摤攰晣ㄴ㉤〰㘷㠵捤㠵つ捥捦攸攲㜳扡ㄸ〷〵㈷㥣捣㤴㌶攱晣〲㉡㍢〵㈷昳慢〵捥㉦㘹㥣㠹搶㈹㜰㝥〵㙥晢㜰㌲㈱㕢攰晣㥡㐶㌴㥣捣捡㜶㠱昳ㅢ攸ㄸ摦㔲㤱ㄹ摢㉥ち摦㔱攱扦愹挰㈴㙥㠱昳㝢搴昶搵㜰扡㉤㍡㔹㡦㔹㜴〳昶㐷戴〵戰㑣昰搶捥㙣挰敥愰戳㥦攸㡣挹搸㑥㘰㤹㠱㙤〲晢ㅦ愸散ㄴ戰捣摢ㄶ㘰㝦愶昱ㅡ搴㔲㠰晤ㄵ摣昶㠱㘵愲户〰换捦㠲㉤挰㌲摢㕢㠷㠲搸昴㜱捡戴て〳㉢晢ㅥ挵㑣㜰ㄷ㠵㑥㔴挰搳扣㌰㉦て〵〱㌶〷戵搶㠱㡥㐷搷扥〴㝢晣扥っ敤㜲挳㈷挰捥搰〱㠰㑣㄰搷㐶㙤〰收搲㈸㝦㈹㐲㌱㤹摢〹㈰㌳戸㑤〰㝤㔰搹㈹〰㤹昷㉤〰㜶愱㜱㈶㠰愷〰搸つ摣昶〱㕣㡥㘶〲㘰㜷ㅡ㐱ㅣ昲㘲戶戸づ挵っ㔲捥㤴㍤愰㘳昸愹挸㑣㜲ㄷ㠵㥥㔴攸㐵〵㈶㤷ぢ㠰扤㔱㙢〵㌰㔸攴〶㘰㕦攸〰㐰㈶㤸㙢愳㌶〰㜷愱搱㕤㘹㤴挹攰㑥〰㤹〱㙥〲戸ㅢ㔴㜶ち㐰收㡤ぢ㠰扢搳㌸ㄳ挸㔳〰摣ㄳ摣昶〱㘴愲戹〰戸ㄷ㡤㘸〰㤹㙤慥㐳戱〱戸㌷㜴㡣㝥㔴㘴㈶扡㡢挲㍥㔴挸愳〲㤳搳〵挰晥愸敤愹㠷戶换搳㌷摤〰摤ㄷ㙤〰㈸ㄳ搶戵ㄳㅢ愰〳改㈴㥦㑥㤸㕣敥〴㤴ㄹ攵㈶愰晢㐱㘵愷〰摤㠰愶〲攸晥㌴捥㠴昴ㄴ㐰〷㠳摢㍥愰㑣㕣ㄷ㐰て愰ㄱつ㈸戳搷㜵㈸㌶㐰㠷㐰挷ㄸ㑡挵ㅢ摤ㄵづ愴㐲〱ㄵ㤸散㉥㠰ㅥ㠴㕡敢ㄱㄹ㈸㜶〳㌰〰ㅤ〰挸㠴㜷敤搵〶㘰㤰㐶㡢㘸㤴挹改㑥〰㤹㤱㙥〲ㄸ㠲捡㑥〱挸㍣㜶〱戰㤸挶㌷愳㤶〲㘰ㄸ摣昶〱㘴攲扢〰㔸㑡㈳ㅡ㐰㘶扦敢㔰㙣〰㤶㐱挷㌸㤸㡡捣㡣㜷㔱㌸㠴ち㠷㔲攱㈱㈸〸㠰挳㔰㙢〵㌰攸ち攰㜰攸〰挰㙤㌶愳㌶〰换㘹戴㠲㐶㤹摣敥〴㤰ㄹ敤㈶㠰㠷㐳㘵愷〰㘴ㅥ扣〰㔸㐹攳㑣㠸㑦〱㜰㈴戸敤〳挸挴㜹〱㜰ㄴ㡤㘸〰㤹㍤敦㠲捦㘸攸ㄸ㘳愸挸捣㝡ㄷ㠵戱㔴ㄸ㐷〵㈶摢ぢ㠰㐷愰搶㤲㜹㤳昱㜹慢㙥挷攵〴戴〴慣㑣挳搷慥㙣戰㑥愴慢㐹㜴挵㤴㜹㈷慣捣㤳㌷㘱㥤っ㤵㥤㠲㤵搹昵〲敢㤱㌴捥㌴晢ㄴ㔸慢挰㙤ㅦ搶㝦愱㤹挰㍡㤵㐶㌴慣捣挹搷愱㠰愷慦搵搳愰㘳㑣愷㈲昳昵㕤ㄴ㘶㔰攱㈸㉡㌰㠵㕦㘰㍤ㅡ戵㝥晡㑣改晥㔰㔸㌷㑣㘷愱ㄹ㌰㘵㘶扦昶㘳挳昴ㄸ晡㤹㑤㍦捣〱㤶晥ㅦ换ㅡ摡攰づ挵㤳挳㍣㑥㘷㝡㘲㕡敡愸㜸愸㘵ㄲ㘹㔵㜲㔹ㅤㄲ㜷㔹㘴扡愲㔹攲㘷㕢㑣晡㠲㠷㈴捡㜸〲昳㍤搹捥㙦摡户戴㝤ㄶ㑥扢昴㜱㍣㌸㔴㥡㔱挲ㅣ搵㥣㙢㝥㑡㝦㌸㘶㑢㝢㜶扣昵㈹㠲㙣挳捤㍢ㄷ㕤散㌳㈱㔶㥤㠸昳㈷㜴昲慡㤰㤸㥥挷〷戱搶㘲挲愷㈲㘷ㅤ㉣扡晡㘴㘰搹つ晣愹愲㘶㍥㤸搰户愸㈱扥愴㐱㝡㤳搳挸攷搱ち㕥㥤㍢搳つ愷㠱㘴摢ㄷ攰昹㤹捦捡挶挶㍣搰㙥㥤晣〲㈶敡㝥㐵㔴㔹挸搲㠵㑥㔶㈱挷㡢挲㙦㑤挹愴㙤㌵㑦㔵慢ㅡㄵ捤敥摣㌹㙤㜵㈰㉤㤵㤳〹搵昲搸㐸慦㤷㤹㥣㌹㔷㈲㘴攷㤲㠲㝢愳㔴㐴搹ㄸ戱攱㉢㠹攸㠲ㄱ〵昱昹㍢愳攳散㤰户ㄶ戴㝢攵攱㜳㙣ㄹ改摥昹攰昵〴㉦昵㠷愰扣ぢ挰敥ち戶㑣㠲㑤挱ㄳ㘴扤㌱㜰㝡㠱㠳㘷㈱敡愷㈳昲㄰昲攷㕡搶㡤晥㜴扢〸㕡挶〰㤶摥〳㔱㍥〸㘵㈷㌴㠰捦〲敡㤸愸〰攵㠱慢㉥㐴㤴㍣㕣挰昴ㄸ㍣〶戸扢搵昹攰㜰㤷愷敥戲㙥摡㑦〲㝡搸㘵摤㘹ち㥢扦㠷㉥昸㜵愱愷㔵㔰㝤㔰攰㙥㔳攷挲ㅣ㈱ㄵ㘸㤲散㘳ㄳ㠸捦摦ㄷ㐲扡㌵〸㡤㐱㉣っ㐶㙥㌰㔸晦㉥㕡㌸㠸ㅡ㈷㤰㍦㤸㈵㠹㙣㌷㥡㘵敤㈴昰㕢㈲摢〳㕣㠹㙣ㄵ㥣愵㐷戶〲摣昴挸昶搴㝥㑥㠶㈹㐴戶ㄷ敡摣晣㝢敢㐲㍦㕤搸挷㉡愸〱㈸㐸㘴㈷摡㈳㍢㤵㝤㍣つ挴攷摦ㄷち㈸戸㐷㌶㔰ぢて愲挶搹㙣㔵挸㤲㐴戶ㅦ㠴ㄲ搹㜹攰户㐴㌶〸㕣㠹散㌸搷挸攲慥㤱つ搶㝥㉥㠲㈹㐴㜶〰敡摣晣㐳㜴㘱愸㉥ㅣ㘸ㄵ㔴㈱ちㄲ㔹扤㍤戲㑢搸挷搵㈰㍥㝦〰ち㈸戸㐷ㄶ搴挲ㄲ㙡慣㘵慢㌰㑢ㄲ㔹〸㐲㠹散㉡昰㕢㈲㉢〱㔷㈲㡢戸㐶㌶挷㌵戲戰昶戳ㅥ愶㄰㔹㈹敡摣晣㘵扡㜰戰㉥ㅣ㘲ㄵ搴㘱㈸㐸㘴戳敤㤱㕤挷㍥㙥〰昱昹㠷㐳〱〵昷挸捡戵㤰㔳㡤挶㑤㙣㜵ㄸ㑢ㄲ搹攱㄰㑡㘴户㠲捦㠲扣㐶㠰㉢㤱ㅤ改ㅡ搹㈴搷挸㐶㙡㍦㜷挰ㄴ㈲ㅢ㠵㍡㌷晦㘸㕤ㄸ愳ぢ㘳慤㠲ㅡ㡦㠲㐴㌶挱ㅥ搹㥤散攳㕤㈰㍥晦〴㈸愰攰ㅥ搹㐴㉤ㅣ㐱㡤晢搸㙡㈴㑢ㄲ搹㘴〸㈵戲㉤攰戳㠰㍡愶㈶㐰㈵戲ち搷挸㠶扢㐶㔶愵晤㍣っ㔳㠸㙣㉡㑤㘱昳㑦搳㠵改扡㌰挳㉡愸㤹㈸㐸㘴挳散㤱㍤挲㍥㙥〳昱昹㘷㐱〱〵昷挸㡥搱挲㈳愸昱ㄴ㕢㡤㘷㐹㈲㍢ㄶ㐲㠹散㔹昰㕢㈲㥢ぢ慥㐴ㄶ㜰㡤散㈰搷挸㈲摡捦ぢ㌰㠵挸收愱捥捤㕦慤ぢ㌵扡㄰戵ち㙡〱ちㄲ搹㠱昶挸㕥㘲ㅦ户㠳昸晣㌱㈸愰攰ㅥ搹㐲㉤㥣㐲㡤㌷搸慡㡡㈵㠹慣づ㐲㠹散㉤昰㕢㈲㙢〰㔷㈲敢敦ㅡ搹㍥慥㤱挵戵㥦昷㘰ち㤱㉤㐶㥤㥢晦㌸㕤㐸攸㐲愳㔵㔰捤㈸㐸㘴㝢摢㈳晢㠰㝤晣㄰挴攷㕦〲〵ㄴ摣㈳㕢慡㠵㝣㌰愱昱㈹㕢昱挹㠲㘶㘴挷㐳㈸㤱㝤〱㝥㑢㘴换挱㤵挸㝡扡㐶搶挳㌵戲ㄳ戵㥦慦㘱ち㤱㥤㠴㍡㌷晦ち㕤㔸愹ぢ慢慣㠲㍡ㄵ〵㠹慣㥢㍤戲㙦搹挷敦㐰㝣晥搳愰㠰㠲㝢㘴愷㙢攱㕣㙡晣挴㔶ㄱ㤶㘴㥦㥤〱愱㐴昶ぢ昸㉤㤱㥤〵慥㐴愶㕣㈳晢㜵㠷摢昵散㙣敤㈷㉢㐷㈲㍢〷㜵㙥晥㜳㜵攱㍣㕤㌸摦㉡愸㡢㔰㤰挸㝥㠶挹㉢攱㉣ぢつ㡣㙣ㄸ㌰㜲㐰㝣晥㡢愱㤰㌱戲㑢戴㜰㍥㕢㜵㘱慢〵㉣㐹㘴㤷㐲㈸㤱㜵〷扦㈵戲换挰㤵挸扥㠲挳㙢攰㄰晡ㅥ慦ㅦ㉡ㄹ敦㐳搵㤷慥攱慥搱捥㝢愱㌱㜶攴攵愸㜳昳慦搵㠵㉢㜴攱㑡慢愰慥㐶㐱挲晤摣ㅥ㙥ㅦ㜶扣㉦㠸捦㝦つㄴㄸ慥㜷ㄷ㔴㥤昷㙣扢㠲攷㜲捦戶ㅢ搸愹昷㙣扢㠳攳㜶捦戶摥戲㙥晥㘸搷㥥搰㤲㕦敥㌲昱扡づ㐲挱慢ㅦ昸㉤㜸㕤て慥攰昵慥つ㉦㠳㜸挹㍤摢摢慥搰晣㐵晢ㄹ〰㍤㐰昳㔷搴戹昹㙦搰㠵ㅢ㜵攱㈶慢愰㙥㐵㐱愰㜹搳づ捤㐰昶㌱ㅦ挴攷扦つち㜲㈴㄰ㅡ㠳㔸ㄸ㡣摣㘰戰晥摢戵戰〹㙥㡣㈱攴㌷戳挴㈳㈱攷づ〸㥤㌷搵戶㙦㍣摡昲㜴昸つ㌶扦㉤㜹㑡㙥捦㝢搶ㅥ搹ㄴ愹挳捦愴㑥挲ち㝥㤲慣㍦挲扡㙦戶㤹㐷搱敥㈷ㄳ〹㘱搶㙣㝥㐰㜰㘲㤰晡挱挲㡡㑤㍥㡤㜴㙣ㄵ搹㤷昳〲昶摤㙦昳挲〳慣昵〳㈱㝢㠷㥤㠴㕣㥢㠳戰敢㤰搷愴㌶愲㉡㐷㘳㈱ㄸ㍣㈹㜸昱㔲㜷㙡㙥〰㕣扤攵摣〵敥㙦㑦㔱愰搵摥慤㕦ㅢ攴ㄷ㐴㠷搴㈱㕢攳㌷㝣ㅦ㌷〸慦敡ㅥ户㍥愸扦㘹㙥㠸㍡㜰㈱晤扤て㕣ㄹ㍤㑦搹㐶㡦户〴㉡㤹捦㌶㑦戸づ愹捤戰㈴㐷㝦㈹ㅡ㘳㐸摤㡦㍡㌷晦ㄶ㕤㜸㐰ㄷㅥ戴ち㍤ㅥ㐲㠱ㅦ愶搸㤵摦㜵昳㍦っ换昴㘲愴㡥㐵晦㔶捤攷㠳㉤㡤㘱攸慡晣㤸㥢摡〶扥散捤攱ㄶ㍡㙣慣ㅥ〳ㄵ㜴ㅥ戴愱搳晡㜹㜰㡢㉢㄰㡦愳㤱〰㔱㘹〲昱〴㑤㘱昳㍦愹ぢ㑦改挲搳㔶㐱㍤㠷㠲㥣㕢㌶挳㘴换㔵㘶㈴扢㌷ち挴攷晦㍢ㄴ挴愸摢攷挱攷戵昰㘴戸㌱挶戳搵㈹㉣挹㔵收㐵〸㈵戲㐹攰戳㠰扡㐷㙤〷㤵挸㙥㜷㡤散㔶搷挸㕥㐶㈳改㐴ㄵ㑣㘱ㄷ扦㐲㔳搸晣慦敡挲㙢扡昰扡㔵㔰㙦愲㈰㤱摤㙣㡦㙣ㅡ晢㌸ㅤ挴攷㝦ぢちㄹ㈳㝢㕢ぢ捦㠴ㅢ攳ㄸ戶㍡㡢㈵㠹散㕤〸㈵戲㌹攰户㐴昶㍥戸ㄲ搹搵慥㤱㕤攵ㅡ搹〷摡㑦㌵㑣㈱戲て㔱攷收晦㐸ㄷ㍥搶㠵㑦慣㠲晡ㄴ〵㠹散ち㝢㘴㔱昶戱ㄶ挴攷晦っちㄹ㈳晢㕣ぢ昹㔸㉦愳㡥慤㉥㘴㐹㈲晢ㄲ㐲㠹㉣づ㝥㑢㘴㕦㠱㉢㤱㕤攰ㅡ搹㜹慥㤱㝤慤晤㌴挲ㄴ㈲晢〶㜵㙥晥㙦㜵攱㍢㕤昸㙦慢愰㝥㐴㐱㈲㍢挷ㅥ㔹ㄳ晢搸っ攲昳敦㠰㐲挶挸㝥搲㐲㍥慦换㔸捥㔶㤷戱㈴㤱晤っ愱㐴戶〲晣㤶挸㝥〵㔷㈲㕢改ㅡ搹㐹慥㤱戱〷搲㠹㔳㘰ち㤱改㙦慦晢戳挸挵收攷扡愵ㄴ戲慤㠲敡㡣㠲㐴戶摣ㅥ搹㘹散攳改㈰㍥㍦㔷㈵愹散㍡敦㘲㘸攱㔵搴㌸㠷慤搶戱㈴㤱㜵㠱㔰㈲㍢ㅦ晣㤶挸戸摡㈸㤱㉤㜶㡤慣挱㌵戲敥摡捦挵㌰㠵挸戸扥挸捤捦㌵㐶㈹㜰㐱㔱ち扤慣㠲敡㡢㠲㐴㔶㘷㡦㙣㌵晢㜸㈹㠸捦捦攵㐲㉡扢㐶挶㘵㐴ㄱ㙥愰挶ㄵ㙣㜵㍤㑢ㄲ㤹㉣〳戲戶づ晣㤶挸昶㠴扥㐴㌶搷㌵戲㘳㕤㈳攳㘲愰昸戹ㄶ愶㄰ㄹㄷ晥戸昹晢改〲㔷晡㠴㤳㘷ㄵㄴㄷ敤㈴戲㘳散㤱㙤㤰㍥㠲昸晣〳愱㐰㘵搷挸昲戵㤰㡦捥㌲㙥㘶㉢㍥晢捡㡣㙣㝦〸㘵㥦摤〶㝥㑢㘴㠳挱㤵挸㈶扢㐶㌶搱㌵㌲慥捡攱ㅦ㑦昷㠶㈹㐴㌶㠴ㄵ㙣㝥慥挲㐹㠱㑢㙥㔲㈸戰ち㡡慢㘹ㄲ搹㜸㝢㘴㜷戱㡦㜷㠳昸晣㐱㈸㔰搹㌵㌲㉥戴㠹㜰㈳㌵㌶戳ㄵㅦ㙡㘵㐶㔶っ㠹㐴昶〰昸㉤㤱㜱愱㑣㈲㉢㜷㡤散㌰搷挸戸㕣㈶㝥戶挲ㄴ㈲攳搲ㄸ㌷㍦㤷挷愴㜰㠸㉥㜰㍤㡣㥢攲㌲㤷㐴㜶愸㍤戲㙤散攳愳㈰㍥㝦㌹ㄴ愸散ㅡㄹ㔷挰㐴挸㠷㕤ㄹ㑦戳ㄵ㥦㔶㘵㐶㈶㉢㔸慣㍤〷㝥㑢㘴㈳愱㉦㤱ㄵ扡㐶㔶攰ㅡㄹ搷戱挴捦㡢㌰㠵挸㐶戳㠲捤捦㜵㉢㈹㡣搵〵㉥㔴㜱㔳㕣㘹㤲挸㠶摡㈳摢捥㍥扥っ攲昳㑦㠴〲㤵㕤㈳攳㈲㤴〸ㅦ愲挶㍦搸敡㘱㤶㘴㥣挹㈲ㄲ㙢㙦㠳摦ㄲㄹㄷ㤱㈴戲㍣㝢㘴㉤㥦㙦晡戹㐶㌶㔵晢㜹ㅦ愶㄰搹㌴㍡挵收攷搲㤱ㄴ戸㑥㈴〵慥ㄵ㜱㔳戳㔰㤰挸昶戲㐷昶㈱晢昸ㄱ㠸捦捦㈵ㅦ㉡㍢敥愹捣捦㌷㕣ちㄲ㈱ㅦ㑦㘵㝣挶㔶㑦戰挴挸晣挷㙡攱㤷搲㥤㥣㜹愸ㅦ㤲昹㝢〹戶㘵㠰㈱㐸摦㑤昹愹扡㤱昸改㌹㘶㜸㜸㍡攱㠹ㅣ收㜳㉣戲戳づ敥㤸㉤㝥昲㘰搲㌶㕦㌹㝥㐴晤㍦戰挳晤搵晡㜱㠱ㄶ昷挱换昸ち〱昷愸㐱戸扣挵㜵摣收晥㝢㌸㜸摣捡㠵㝡㜲慤㜷扦昵摥愷扣㐷㔴户㥣慤晡㕦㔴㤱昳捥ち攷㔳㙡愵攵昸㌷捤ㄶ晡㝤敦㜷捡搵㈲戴捣㠷搴㜸㠷攴㕤ㄲ㌹挸扡㈰捣搷㤱愷㤳昶㜳㔰㍥㑢攰晣㌹㈸㝦〳㉣攱摦㘳㝣㉦㍢㑦㈵㔰攱づ㔴戹㘸㐱搴㈴搰ㅦㄹ㘸ㄲ散㡥〵摡愴㕢戶ㄵ愸晦攳㥣㡡㘷扥㤹扥敢㉥㜸晦改搵㕥㉢㥦摡㌵户㐲㥤㠰㤶㙥㠱㜶戲攲㐹ぢ㌴换ㄲ㌸㝦昶挹㝦ㄲ㉣攱ㅦて㤵㌱〳㍤ㄹㄵ〹搴㘳て㔴㈱挰ㅥ愷㐲搴戱㐰㑦搳㉤摢ち㜴攵㤸搷换て搸昲散㈷㝣㕦ㅤ扥㝤捤捣㝦晥愳㕣㥤㡤㤶㙥㠱晥昴㘳㠶㍤扡挳ㄲ㌸㝦摥挹㝦ㅥ㉣攱摦㘳㜴㐶っ摤㍡愹㡢㔰㤱㐰㝦㐰㡢㤶㍤㙡㌰搰㑢㈰敡㔸愰慢㜵换戶〲昵㜸㝥戰〶挱て挳捤㉦㐰散ㄸ慥搶愲愵㕢愰摦㘴ち昴㙢㑢攰晣ㄹ㈷晦㔵戰㠴㝦㍣㔰挵っ㜴㍤㉡ㄲ攸扦敤㠱昶㘴愰搷㐱搴戱㐰㌷攸㤶㙤〵扡搲扢慤㝣敡㔳㕤晥昴っ摥㥢㠷㍥㌸扡㙦晦挷捡搵㑤㘸改ㄶ攸愷㤹〲晤㤷㈵㜰晥㕣㤳晦㔶㔸挲㍦㘶㥤捣㐰敦㐰㐵〲晤挴ㅥ攸敥っ昴㑥㠸㍡ㄶ攸㕤扡㘵愶㐰户扥昱收㌱换捦㕣㕣摥敢挰㙢㑥㜹㝢㑥愲㍣㜲㔲捤㡤㠷㤷㈴换搵㝤㘸改ㄶ攸晢㤹〲㝤捦ㄲ㌸㝦㤶挹扦〵㤶昰㡦㘷戶㤸㠱㍥㡣㡡〴晡㡥㍤搰晥っ昴ㄱ㠸㍡ㄶ攸㌶摤㌲㔳愰㥦㙦扦㜶搵攷敦ㅥ㔰摥戹㜲㐴扦㑢摦㍡戰扣攷㔱㠹搹敢敡ぢ换搵㔳㘸改ㄶ攸ㅢ㤹〲㝤摤ㄲ㌸㝦㝥挹晦㉣㉣攱ㅦ扦㐰㘶〶晡〲㉡ㄲ攸慢昶㐰〷㌳搰㤷㈰敡㔸愰摢㜵换㑣㠱ㅡ摦㙦扦攴敤㡦慦ㅦ晥晣晣换㡡ㄶ㌶摥㌰㝣捤慢㌳㕦昸昶㤷㥢㠶慢㌷搰搲㉤搰ㄷ㌳〵晡㠲㈵㜰晥捣㤲晦㉤㔸挲㍦㝥ㅣ捤っ昴㍤㔴㈴搰扦摢〳つ㌰搰て㈰敡㔸愰ㅦ敡㤶㤹〲㐵〷搰㠵捤攵㝢昵㠸ㅡ扤昰扥敥㠲㘹扥挷㕥摥㔲慥㍥㐵㑢户㐰㥦捡ㄴ攸㤳㤶挰昹㜳㑡晥㉦㘰〹晦㔸昷㌵〳晤ㅡㄵ〹昴㜱㝢愰㘵っ昴㕢㠸㍡ㄶ攸㜷扡㘵愶㐰㔷晢㉥ㅤ扦㜶挳晡昲㕤㈳㐷扥慦㌶㕤㔷扥收㥥慥挷㉦㜸昲晡㜲昵ㄳ㕡扡〵扡㌵㔳愰て㕢㠲慣捡㑤㌷㔴敤扦㘳摣〳挱挵てㄸ㉦昴摤摢晦ぢ㉣攱摦㘳っ㌷〳攵㙡㡢〴晡愰㍤搰ち〶捡㜵㤴㡥〵㥡愳㕢㘶ち㜴昸昸㐳挶晤晡攸㜱攵摤㙥摣昸捥つて㌶㤶扦搱㜹攸㤲愹昷㌶㤵㉢慥挲攴戳㝢敦㤰戴摥ㄹ摤㤷㈹搰㝢㉤㠱昳攷㤱晣㕣户㤱㐰㐷㥢㠱㜲㥤㐵〲摤㘴て㜴㉣〳攵ち㑡挷〲敤慢㕢㘶ち㜴㕤昷戵户捥扤晢晤㜲昳捥攸挳㜲昳捥攸㤳㜲挵攵㤳㝣㤷㐰㌷㘶ち昴づ㑢攰晣ㄹ㈴㍦ㄷ㕣㈴搰㐹㘶愰㕣㌵㤱㐰㙦户〷㝡㈴〳攵㝡㐸挷〲捤搷㉤㌳〵晡攵敡㑦㜲㉥扣昰攷昲搷㑢㔶㕤㌸戹摥㔳㜱晦㠰敥㔷扦摡㌳慢㐲㜱㌵㈵摦㈵搰㥢㌲〵㝡愳㈵㜰晥摣㤱㍡〸㤶㜸㈷㙦捣㐰っ㤸㤴㤲㤷㥦㌳晣ㄲ晥㔱攰ㅡ㐷㠳㜴换昲敢〹㝥㈵㜳敥㙣搳挲㐱挵捦㔹㜶㘹㌳㡢敡㥤ㄴ㘷挵〵戲敢散㤰捤㠶㔰㜱ㄶ㍡㥦〶摥㈱挹挶㠷ㅢ昳㔶㝤㕤愶敥㕦㘵〹㥣㍦ㄲ攱ㅦ慥㥤㔶㥢㑥㉢戵搳㉢散㑥愳㄰昶ㄸ〹ㄱ摥攵㠵㌷扤晤㠶捦㈴愳㜴换㑣晢㐹㙣㕤昲㝣戹扣㥦昱愲昹扥㝣㝢戹ㅡ㡦㤶昹攰㍡㐷摥㥦㌳〵㝡愹㈵㜰晥ㄸ㠴㝦ㄲ㉣〹扡㡢捣㐰慢㔰ㄷ㜴㉦戱〷㕡捦㐰愷㐱搴戱㐰愷敢㤶㤹〲扤昶搴㠷ㄷ昷晢搶㈸晦愲昹挰扢㘷扥摣戵扣㉣㜶搹㑦㤷㙥敡㔱慥㡥㐱换㝣㤷㐰捦捦ㄴ攸㜹㤶挰昹愳て晥㌹戰㈴㠱㌶㥡㠱㔶愳㉥㠱㥥㘳て戴㠹㠱㐶㈱敡㔸愰戵扡㘵愶㐰戹㈷㔷㥥昶㔰昹㜱㠳摦ㅥ㜹ㄳ摥慢㡦㙦慡㍤㜴搴搶㜲㔵㠷㤶昹㉥㠱晥㈹㔳愰愷㕢〲攷㡦㍢昸攳戰㈴㠱㥥㘰〶摡㠸扡〴㝡慡㍤搰ㄳㄹ㘸ㄳ㐴ㅤぢ戴㔹户捣ㄴ攸㡥㤳ㄶ㙥㑥㕥㝣挶㜰晤㍥㉡扦㈹敢昲摣戳㠷慢攵㘸㤹敦ㄲ攸㡡㑣㠱㥥㘴〹㥣㍦攲攰㕦〱㑢ㄲ攸㈹㘶愰愷愰㉥㠱㉥户〷㝡ㅡ〳㍤つ愲㡥〵㝡扡㙥㤹㈹搰挱挷㥣晦昰㜷㠳㕥戲㍥㜴扤㍣晣摡挵挳㝣慦㕣晢敡㜰㜵づ㕡收扢〴扡㈴㔳愰捤㤶挰昹㘳つ晥昳㘱㐹〲㍤摢っ昴㘲搴㈵搰愴㍤搰㜳ㄹ攸㙡㠸㍡ㄶ攸愵扡㘵愶㐰ㄱ㡡攷㠲摢扢㔷㡣㐹晡て㕣㡤昷㠷扡㍥昱㙡扦㜷晤ㄵ敡ち戴捣㜷〹㌴㥥㈹搰〶㑢攰晣㔱〶晦㍡㔸㤲㐰㉦㌶〳扤ㄶ㜵〹戴捥ㅥ攸㙡〶扡〱愲㡥〵㝡扤㙥搹㔶愰㥥ㅦ扦㉢㘷挰晡㝤攵㤰ㅦ捡搵捤㘸㤹て㥥昳慣㍢㍦㔳愰戵㤶挰昹攳ぢ晥摢㘰㐹〲㕤㙢〶扡ㄱ㜵〹戴挶ㅥ攸㤵っ昴㉥㠸㍡ㄶ攸摤扡㘵愶㐰ㄳ㠹〵ㄷ摤㝤㠲慦扣摢愶㝥て㜴慡敦㔶晥搲㐹晦㙡ㅡ㜴㤰扦㕣㙤㐶换㝣㤷㐰攷㘴ち昴㔸㑢攰晣㤱〵晦〳戰㈴㠱㕥㙢〶扡ㄵ㜵〹昴ㄸ㝢愰ㅢㄸ攸㌶㠸㍡ㄶ攸愳扡㘵愶㐰晦㌴扥敥捣㉦敦扦扦晣戵ㄵㄷ扥晥摦愷㍤㔸ㅥ㝦慤敥摦摦つ㝤戸㕣㍤㡤㤶昹㉥㠱捥挸ㄴ攸㜴㑢攰晣㌱〵晦㜳戰㈴㠱摥㘴〶晡㈲敡ㄲ攸㔴㝢愰户㌰搰敤㄰㜵㉣搰㤷㜵换㑣㠱㈲ㄴ㕣㕥㥥户㉥㉦捦㕢㤷㤷ㄷ换搵㍦搰㌲摦㈵搰㐹㤹〲㥤㘸〹㥣㍦㥡攰㝦ㅢ㤶㈴搰㡤㘶愰敦愳㉥㠱㡥户〷㝡ㄷ〳晤㄰愲㡥〵晡㤱㙥㤹㈹搰㡣户敡㥦愱㘵扥㑢愰愳㌳〵㍡捡ㄲ愴晤㌸挲㤷戰搴摥㡦㈳昰ぢっ搱㐶㜹摥㔲て㌸捤愹㘵扥㝣㤷㕡㤳捤㐹㜱㜹搲㑥㥤㝣㕦愱㉢㥥㘳㥥㔸ㄴ㑤㡣挷㈳晢昱昴昲慡㔸扤㤵㤰㡦㐷昹昳〹〴晡㐹搹㠶搴搸搸㕢㍢㈹㠱㐷㘷㜷慥ㅤ摢㠸㘷挹搴攴搶㑦㡥㈴昱㈳愰つ㝦㠴㥣㈴㝣㠳㠴昷搷搸捣挷㥢扢㝥㜹攳㔹㠸㥤捦㘲戰㘵㘳戵攲愱㥦㈷㤲挵挷㥦㜷㉣㈳挹㝢ㅦづ㌵晢㜷㡥㙡㙣て昵捦㔶㈳戰㥢捤扣晣㤵㥥㕦愵摦㐸㌵㌲敥㐷ㅢ敦ㄶ㤰㑥昸捥㠳㝣㕥〱昱ㄹて㠰㈳㕦攴ㄱ攲挹攱摡㠳㌳㐰㝥愵㘶ㄴㄱ挸㔹ㄲ慢㐹㉥昰㉥㠸挶收㉦㐸攲慢㌳㕤ㄸ戵摥ㄴ愷晡㜹㈴㜹ㅦ㙡戳㝢㠷戹㜶㙦㉢晢挱敥戵㜶㙤㕢㙡搷ㄴ㔷ぢ搸㍤扤愹㕦戵挳挷摡㜴㔸敡敡昰㠹㜴㠷㑦㌹ㅣ㜲搶㍥挵㈱愷扥㈵挲㘷㔰挸扣〳㠲慥づ㥦愳昵搴〸㥦㈷㡢㕦㠲㌶挱㔷㥣㍤㑦㜱挸㈹㘸㜱昸㈲ち㤹ㅤづ㜵㜵戸㥤搶㔳ㅤ扥㐲㤶捤㈱㘷戱㔳ㅣ㜲㉡㔸ㅣ扥㠶㐲㘶㠷晢戹㍡㝣㠳搶㔳ㅤ扥㐹㤶捤㈱㘷㤳㔳ㅣ㜲㑡㔶ㅣ扥㡤㐲㘶㠷㜹慥づ摦愵昵㔴㠷敦㤳㘵㜳搸ㅦ昵ㄴ㠷㥣ㅡㄵ㠷ㅦ愲㤰搹攱ㅥ慥づ㍦愶昵㔴㠷晦㈴换收㜰㌰敡㈹づ㌹㐵㈹づ㍦㐵㈱戳挳㍥慥づ㍦愷昵㔴㠷㕦㤲㘵㜳挸㔹捥ㄴ㠷㥣㉡ㄴ㠷㕦愱㤰搹㘱㜷㔷㠷摦搰㝡慡挳敦挸戲㌹攴㙣㘳㡡㐳㑥搹㠹挳敦㔱挸散㌰搷搵攱㡦戴㥥敡昰㈷戲㙣づ㉢㔰㑦㜱㌸ㅡっ㜱昸㌳ち㤹ㅤ㘶戹㍡晣ㄵ㙤扣ㅥ攴挴愶㥥〸ㄵ㌸㜶愷㘳㥤㑥㈷㘹愷㥤愰㤹搹改㝦㝥㜰㍢晢收搰㍡㥤戶㥥摥㍡㍢ㅣㅥ改㜰攸㥦〱㠶摣㝥ㄸ搴昴㤱㜴〱昱㈹捥㈸挹㝤挸户昰挵愵㌷㝥愵ぢて㤰㔷㐷㙢挱㌷㤶愰㈷〵㔹㥤搴㉣〸〴戰敥㌰搰〳㍦㔸ㄲ慤挶挳愱昲攴㝢㠶㡤㔹敡㉢摤攷㤹㠷敦摤㝡挵昰搳㈳慦㝣㑡慥㝥扣㕡昴㈲换戶㘷㘶挳㉥昷㑣搵㥡㝢换㝦㉥㥡㕤愱慡戵愳㍥搰捣っ搲愷摡愱挷㝥㠹摡㠵搶㔳て㠵摤ㅣづ愳㤶㐳挴㈵㥢㕡愴ㅤ敥搱愶挳て㕤ㅤ敥㤵敥戰㥦挳㘱扤搳㘱愳㜶㤸搷愶挳户㕤ㅤづ㐸㜷㌸搰攱戰挹改昰〴敤㜰扦㌶ㅤ扥收敡㜰㔰扡挳〳ㅣづ㑦㜴㍡㍣㐵㍢ㅣ摡愶挳ㄷ㕤ㅤㄶ愴㍢㉣㜴㌸㍣捤改昰㙣敤㌰搸愶挳㘷㕣ㅤ㠶搲ㅤ㤶㌸ㅣ㥥敢㜴㜸戱㜶㔸摡愶挳挷㕣ㅤㅥ㥣敥昰㔰㠷挳搵㑥㠷㙢戵挳挳摡㜴昸㤰慢挳昲㜴㠷㠷㍢ㅣ㕥改㜴㜸慤㜶㌸愲㑤㠷昷戹㍡ㅣ㤵敥㜰㡣挳攱〶愷挳㥢戴挳㜱㙤㍡扣换搵攱昸㜴㠷ㄳㅤづ㙦㜱㍡摣愸ㅤ㑥㙥搳攱㙤慥づ愷搰㝡敡改㜸慡挳攱㕤づ㠷㌹昷㠳昱㥢敦昰戹ㅥ搰挱㜴晣改攸㠸㝡〰捥捣㌵〵搶㘰㑣㕥㕢挱㘵㌷㡣愳挸摤愶㜵㡥戶敢㍣愱㜵㘶㤲晢㤴搶㤹㘵搷㜹㑥敢ㅣ㐳敥昳㕡㘷戶㕤㘷扢搶㌹㤶摣㔷戴捥ㅣ扢捥ㅢ㕡㘷㉥戹㙦㙡㥤㠸㕤㠷昷㘸搲攷㜹攴扥慦㜵慡敤㍡扣慤ㄲ㥤ㅡ㜲㜹㐷㈵戱㐷敤㍡扣ㄳㄲ㥤㕡㜲㜹ㄳ㈴㍡昳敤㍡扣㜹ㄱ㥤〵攴㝥愷㜵㘲㜶ㅤ摥㙦㠸捥㐲㜲㝦搲㍡㡢散㍡扣㐵㄰㥤㍡㜲㜹㘷㈰扥敡敤㍡扣愲㡢㑥〳戹扣㤸㡢㑥摣慥挳ぢ户㕣愸㉦挰㔱挸ぢ昵愱搸㤳戹㔹㕥挵㡢戹〸捥户〴晣ㅡ㙣㉥㥥愵换ぢ扣〸捥戳〴捣㜴㌱ㅡ㘹㤴㤷㘳㜱挸〷昶㈹㕥㠹挵㘱ㄳち戹㙣㡤㤷攲ㄵ㔴㜴㥡㈹收挵㔳㜴㤶㔸〵㔶ㄴ㉦㝡愲戳㤴㕣㕥敦㐴㘷㤹㕤㠷搷㈹搱㌹㥥㕣㕥愲㐴攷〴扢づ㉦㉤愲戳㥣㕣㕥㔵㐴攷㐴扢づ慦〶愲㜳ㄲ戹扣㄰㠸捥ち扢づ㑦攰愲戳㤲㕣㥥扢㐵㘷㤵㕤㠷攷㕣搱㌹㤹㕣㥥㙥㐵攷ㄴ扢づ㑦㤳愲㜳㉡戹㍣㐳㡡捥㘹㜶ㅤ㥥搹㐴攷㜴㜲㜹㔲ㄳ㥤㍦搹㜵㜸㌲ㄲ㥤㌳挸攵㜹㐸㜴捥戴敢昰晣㈱㍡㘷㤱换㔳㠷攸㥣㙤搷㤱㜱捣扤㜷づ戸㝡昳捦㐰㐵㙥敡捥㐵〱㑢㝣㌲㤲搳戴㌸愲㐵敢㝣㔳㑢挶㜲㥡ㄶ挷戴㘸㕤㘸㙡挹㘸㑥搳攲愸ㄶ慤㡢㑤㉤ㄹ捦㘹㕡ㅣ搷愲戵摡搴㤲ㄱ㥤愶挵㤱㉤㕡㝦㌶戵㘴㑣愷㘹㜱㙣㡢搶ㅡ㔳㑢㐶㜵㥡ㄶ㐷户㘸慤㌵戵㘴㕣愷㘹㜱㝣㡢搶㤵愶㤶㡣散㌴㉤㡥㜰搱㕡㘷㙡挹搸㑥搳攲ㄸㄷ慤㙢㑣㉤ㄹ摤搴ち搸㘶ㄵ晣ㅣ攵愲㜵慤愹㈵攳㍢㑤㡢攳㕣戴㌶㠸㔶てづ搱ㄹ搰捡㕡慡慡攷搶捣㥤晢㐳㡦散扣㍤戲㡦㉡敦扡收㥤㈷摦扢攸愵㘳㠶㝤晣㥦㉢慥㜸改㠳㡢㥥晥捦收㜹挳ㅥ㕢扦晥㤱㜱敢㥥㝥慦㔷敤搵㔹㜷晦㌰晥敡攵㠱㐵换㡦慢㥤㜶挰攸攵㐷㉦㍣㌲㌰戹攷㤰㑥㥤㍡㜷摥扦昷攳扢つ昲慦㍣㙥㤳㝡攸戵㕤ㅢ㤴㡣㝡㜶攳㝡㜸攲搱戶㉦㕥㝥㍤晡㡤扦㠰㙢晣㤵攴〶㤲ㅢ㐹㙥㈲戹㤹攴ㄶ㤲㕢㐱㤴㥣ㄸ㘸㈶攵愸攴〹㐲愲戹ㅤ〵ㅣ㤵㜲㙡㐸搳攲㈹㐲戴敥㌰戵攴攴㤰愶挵㤳㠴㘸摤㘹㙡挹改㈱㑤㡢愷〹搱扡摢搴㤲ㄳ㐴㥡ㄶ㑦ㄴ愲戵挹搴㤲㔳㐴㥡ㄶ㑦ㄵ愲㜵慦愹㈵㈷㠹㌴㉤㥥㉣㐴㙢戳愹㈵愷㠹㌴㉤㥥㉥㐴㙢㡢愹㈵㈷㡡㌴㉤㥥㌰㐴敢㐱㔳㑢㑥ㄵ㘹㕡㍣㘵㠸搶挳愶㤶㥣㉣愸㤵㜲扣昱愴㈱㕡㡦㠸㤶㕦敦ㄸ挵㌳㠴㕣ぢづ戱慥〵㠷愳㉤㍦收昱愴㈰㠲㠳ㅤ〲㥥〷㐴㔰收㄰㜰攸㡢愰搴㈱攰㘸ㄷ㐱搸㈱攰〰ㄷ㐱㠹㐳挰㌱㉤㠲㘲㠷㠰挳㔸〴㈱㠷㠰㈳㔷〴㐵づ〱〷慢〸㠲づ〱挷愷〸〲づ〱㠷愴〸ちㅤ〲㡥㐲ㄱㅣ㤴㉡昰㜳戴〸扡㉦愰㠰㈳㥢攳㐴ㄴて㑣㔵㔴ㅣ㍢㈲ㄸ㙡〹昸㌳戵挶㜶㜰ㄵ㐷㤴㠸づ戰㐴㑣昲昰㈹㡥㌱㘱て戶搸晣戴敤㔳ㅣ㜵挲ㅥ㘴戱㜷ㄱ㌶挷愱戰昷户搸扢ち㥢㈳㔳搸晢㔹㙣㝥㤶昷㈹㡥㔵㘱攷㕢㙣㍥慢挵愷㌸㍣㠵㍤搰㘲敢㐳㠲㈳㔲〴晢㍡〴ㅣ㠴㈲ㄸ攰㄰㜰摣㠹愰扦㐳挰愱㈶㠲㍣㠷㠰愳㑢〴晢㌸〴ㅣ㔰㈲攸攷㄰㜰っ㠹㘰㙦㠷㠰挳㐶〴㝢㌹〴ㅣ㈹㈲搸搳㈱攰攰㄰挱ㅥ愹㠲ㅣ敥搷㌶㝥㜶戸㜵攲㥤㌷㐸㐶㍤ㅦㅣ捦㈹㜸㕦晤挸㠶愶㝡㜹㈰㤰户㥥㍦晤摡搰搳㝡攸昷㤰ㄶ㥤㕥㉤㥣ㄶ摤敥㉤㉣㘹戳扢昹挳㥤㤱㜹㜵㔱慡っ㘹㌵摡搷㈹ㄱ㝤ㅣ㠹㍣ㄸ㍤〳㌲㝦昷㐰㜷㤰摦〶挸㔵扦㔹㌱㔷戱㠱昱㌱搰攰愶㕡㑢㔲㔵㍣㤰攵㡥攵ㄳㄴ㜲愸昶ㅢ㑣昳㌲搳挱㑦㌱晦㠴〷㐵㕦㜲㘳愴㑦㜸ㅣ㌸㑡㐴㈸愴㥣〶扢晣㍦扥ぢ㍢㐲
C34: Decisioneering:7.0.0.0 | D34: Decisioneering:7.0.0.0 | E34: Decisioneering:7.0.0.0 | F34: Decisioneering:7.0.0.0

Sheet Simulace (hidden)
B2: Položka | C2: Vše | D2: - | F2: Položka | G2: TiO2 | H2: ZrO2 | I2: ZnO | J2: LiFePO4
B3: TETRACHLORID TITANU | C3: 1.22 | D3: TiO2 | F3: Dolní mez | G3: 10.17 | H3: 23.94 | I3: 20.17 | J3: 8.81
B4: OXYSULFID TITANU | C4: 1.489160233 | D4: TiO2 | F4: Horní mez | G4: 20.61 | H4: 33.69 | I4: 29.69 | J4: 15.82
B5: DUSIČNAN ZINEČNATY ROZTOK | C5: 1.952997027 | D5: ZnO | F5: Střední hodnota | G5: 15.28 | H5: 29.06 | I5: 24.81 | J5: 12.64
B6: HYDROXID DRASELNÝ | C6: 0.7079614222 | D6: ZnO | F6: FCM hodnota | G6: =FCM!N165 -> 15.28612841 | H6: =FCM!O165 -> 29.00341951 | I6: =FCM!P165 -> 24.85858709 | J6: =FCM!Q165 -> 12.5947889
B7: ACETÁT ZIRKONU | C7: 2.416833821 | D7: ZrO2 | F7: Pravděpodobnost (zisk ≤ FCM) | G7: 0.508 | H7: 0.4816 | I7: 0.5024 | J7: 0.4817
B8: KYSELINA ASKORBOVÁ | C8: 6.957551908 | D8: LiFePO4
B9: SÍRAN ŽELEZNATÝ HEPTAHYDRÁT | C9: 0.3905994054 | D9: LiFePO4 | F9: Položka | G9: USA | H9: Británie | I9: Česko | J9: Čína
B10: HYDROXID LITHNÝ MONOHYDRÁT | C10: 6.71342728 | D10: LiFePO4 | F10: Dolní mez | G10: 376679251 | H10: 220628029 | I10: 274537609 | J10: 290304033
B11: KYSELINA FOSFOREČNÁ | C11: 0.6103115709 | D11: LiFePO4 | F11: Horní mez | G11: 636358094 | H11: 425044460 | I11: 477554169 | J11: 498729876
B12: CENA VODY | C12: 1.815 | D12: - | F12: Střední hodnota | G12: 498508813 | H12: 318580866 | I12: 373323631 | J12: 386542190
B13: CENA ZEMNÍHO PLYNU | C13: 0.043 | D13: - | F13: FCM hodnota | G13: 498972116 | H13: 318462154 | I13: 373873145 | J13: 387042679
B14: CENA ELEKTŘINY | C14: 0.13 | D14: - | F14: Pravděpodobnost (zisk ≤ FCM) | G14: 0.51 | H14: 0.506 | I14: 0.5084 | J14: 0.5076
B15: PRODEJNÍ CENA | C15: 40 | D15: TiO2 | F15: ČSH (P = 99,5%)* | G15: 395024071 | H15: 237440098 | I15: 295888325 | J15: 305788031
B16: PRODEJNÍ CENA | C16: 43 | D16: ZrO2 | F16: * ČSH bude na 99,5 % větší než uvedená mez
B17: PRODEJNÍ CENA | C17: 43 | D17: ZnO
B18: PRODEJNÍ CENA | C18: 30 | D18: LiFePO4 | F18: Položka | G18: USA | H18: Británie | I18: Česko | J18: Čína
B19: POČET PRACOVNÍCH DNÍ | C19: 231 | D19: - | F19: Dolní mez | G19: 187561877 | H19: 247381565 | I19: 277656584 | J19: 282288278 | O19: TiO2 | S19: ZrO2 | W19: ZnO | AA19: LiFePO4
B20: VYUŽITÍ PRACOVNÍ DOBY | C20: 0.8 | D20: - | F20: Horní mez | G20: 379375883 | H20: 460780412 | I20: 503288579 | J20: 491265501 | O20: Položka | P20: Příspěvek k odchylkám | Q20: Hodnocení korelace | S20: Položka | T20: Příspěvek k odchylkám | U20: Hodnocení korelace | W20: Položka | X20: Příspěvek k odchylkám | Y20: Hodnocení korelace | AA20: Položka | AB20: Příspěvek k odchylkám | AC20: Hodnocení korelace
B21: HALDWARE/SOFTWARE | C21: 1220.623142 | D21: - | F21: Střední hodnota | G21: 288024570 | H21: 348377281 | I21: 387499297 | J21: 390259910 | O21: PRODEJNÍ CENA | P21: 0.8025096597 | Q21: 0.8876283825 | S21: PRODEJNÍ CENA | T21: 0.8891850308 | U21: 0.9658609194 | W21: PRODEJNÍ CENA | X21: 0.9220008602 | Y21: 0.9758433274 | AA21: PRODEJNÍ CENA | AB21: 0.9138233945 | AC21: 0.9668466514
B22: NÁKLADY NA PROSTOR | C22: 80561.12736 | D22: - | F22: WLC hodnota | G22: 295834575 | H22: 357561629 | I22: 395238269.3 | J22: 398439340.1 | O22: OXYSULFID TITANU | P22: 0.1471431921 | Q22: -0.3800809763 | S22: ACETÁT ZIRKONU | T22: 0.067320808 | U22: -0.265762183 | W22: DUSIČNAN ZINEČNATY ROZTOK | X22: 0.03538717185 | Y22: -0.1911777567 | AA22: HYDROXID LITHNÝ MONOHYDRÁT | AB22: 0.02421586383 | AC22: -0.1573897496
B23: PŘÍPRAVA SÍTÍ | C23: 1179.935704 | D23: - | F23: Pravděpodobnost (zisk ≤ WLC) | G23: 0.6034 | H23: 0.6059 | I23: 0.5823 | J23: 0.5918 | O23: CENA VODY | P23: 0.01579015315 | Q23: -0.124508562 | S23: OXYSULFID TITANU | T23: 0.01303001733 | U23: -0.1169205957 | W23: PRODEJNÍ CENA | X23: 0.008693761031 | Y23: -0.09475852303 | AA23: KYSELINA ASKORBOVÁ | AB23: 0.02355700318 | AC23: -0.1552338689
B24: NÁKLADY NA SLUŽBY | C24: 68354.89594 | D24: - | F24: ČSH (P = 99,5%)* | G24: 217371719 | H24: 265403572 | I24: 294769868 | J24: 308311634 | O24: ACETÁT ZIRKONU | P24: 0.007398198375 | Q24: -0.0852253969 | S24: KYSELINA ASKORBOVÁ | T24: 0.008107858771 | U24: -0.09222987292 | W24: CENA ZEMNÍHO PLYNU | X24: 0.007263997197 | Y24: -0.08661682647 | AA24: CENA ELEKTŘINY | AB24: 0.01438539779 | AC24: 0.1213074292
B25: DOKTORAND | C25: =D25*$C$29 -> 54629.26243 | D25: 0.242423753 | O25: TETRACHLORID TITANU | P25: 0.006864891594 | Q25: 0.08209616838 | S25: CENA VODY | T25: 0.005300559796 | U25: 0.07457261829 | W25: HYDROXID DRASELNÝ | X25: 0.007159472246 | Y25: -0.08599138397 | AA25: DUSIČNAN ZINEČNATY ROZTOK | AB25: 0.005142680541 | AC25: -0.07253059412
B26: DĚLNÍK | C26: =D26*$C$29 -> 25974.86046 | D26: 0.1152664868 | O26: NÁKLADY NA SLUŽBY | P26: 0.003715713751 | Q26: 0.06039864159 | S26: SÍRAN ŽELEZNATÝ HEPTAHYDRÁT | T26: 0.004714190782 | U26: 0.07032700131 | W26: SÍRAN ŽELEZNATÝ HEPTAHYDRÁT | X26: 0.007068342428 | Y26: 0.08544235777 | AA26: CENA VODY | AB26: 0.004847860256 | AC26: 0.07042088968
B27: INŽENÝR | C27: =D27*$C$29 -> 58364.36924 | D27: 0.2589987271 | O27: DUSIČNAN ZINEČNATY ROZTOK | P27: 0.002207646669 | Q27: -0.04655548222 | S27: NÁKLADY NA PROSTOR | T27: 0.002654401961 | U27: 0.05277179509 | W27: CENA VODY | X27: 0.002855901132 | Y27: 0.05431077724 | AA27: ACETÁT ZIRKONU | AB27: 0.002795088806 | AC27: -0.05347173389
B28: MANŽER | C28: =D28*$C$29 -> 86377.67035 | D28: 0.3833110331 | O28: VYUŽITÍ PRACOVNÍ DOBY | P28: 0.001998993503 | Q28: -0.0443008172 | S28: CENA ZEMNÍHO PLYNU | T28: 0.001823648542 | U28: -0.04374103896 | W28: MZDOVÉ NÁKLADY | X28: 0.002277810987 | Y28: 0.04850352201 | AA28: NÁKLADY NA SLUŽBY | AB28: 0.002480097723 | AC28: -0.05036871347
B29: MZDOVÉ NÁKLADY | C29: 225346.1625 | O29: CENA ZEMNÍHO PLYNU | P29: 0.0005741949221 | Q29: 0.02374300697 | S29: TETRACHLORID TITANU | T29: 0.00169685386 | U29: 0.04219303277 | W29: KYSELINA FOSFOREČNÁ | X29: 0.001978565694 | Y29: -0.04520533282 | AA29: KYSELINA FOSFOREČNÁ | AB29: 0.002228909092 | AC29: -0.047749919
B30: ZISK TiO2 | C30: =FCM!N165 -> 15.28612841 | O30: KYSELINA ASKORBOVÁ | P30: 0.0005491632268 | Q30: -0.02321970888 | S30: NÁKLADY NA SLUŽBY | T30: 0.001320854769 | U30: -0.0372259729 | W30: NÁKLADY NA PROSTOR | X30: 0.001395320179 | Y30: 0.03796219985 | AA30: CENA ZEMNÍHO PLYNU | AB30: 0.001937284633 | AC30: -0.04451672207
B31: ZISK ZrO2 | C31: =FCM!O165 -> 29.00341951 | O31: HYDROXID DRASELNÝ | P31: 0.0005157968751 | Q31: 0.02250325801 | S31: MZDOVÉ NÁKLADY | T31: 0.00111392954 | U31: -0.03418592874 | W31: OXYSULFID TITANU | X31: 0.0007878582381 | Y31: -0.0285258421 | AA31: SÍRAN ŽELEZNATÝ HEPTAHYDRÁT | AB31: 0.0007477638396 | AC31: -0.02765723063
B32: ZISK ZnO | C32: =FCM!P165 -> 24.85858709 | O32: CENA ELEKTŘINY | P32: 0.0003398542804 | Q32: 0.01826637707 | S32: HYDROXID DRASELNÝ | T32: 0.0007643582938 | U32: 0.02831828927 | W32: CENA ELEKTŘINY | X32: 0.0007595140729 | Y32: -0.02800801603 | AA32: HYDROXID DRASELNÝ | AB32: 0.0006274441717 | AC32: 0.02533459734
B33: ZISK LiFePO4 | C33: =FCM!Q165 -> 12.5947889 | O33: NÁKLADY NA PROSTOR | P33: 2.276819913e-05 | Q33: -0.004727922912 | S33: VYUŽITÍ PRACOVNÍ DOBY | T33: 0.0005040441884 | U33: -0.02299602798 | W33: TETRACHLORID TITANU | X33: 0.0006231082477 | Y33: 0.02536858147 | AA33: VYUŽITÍ PRACOVNÍ DOBY | AB33: 0.0006042482608 | AC33: 0.02486189145
O34: KYSELINA FOSFOREČNÁ | P34: 2.22926819e-05 | Q34: -0.004678290713 | S34: CENA ELEKTŘINY | T34: 0.0004365149991 | U34: 0.0214002136 | W34: HYDROXID LITHNÝ MONOHYDRÁT | X34: 0.0005389563669 | Y34: -0.02359343837 | AA34: TETRACHLORID TITANU | AB34: 0.0002877143776 | AC34: 0.01715565262
O35: SÍRAN ŽELEZNATÝ HEPTAHYDRÁT | P35: 1.977522216e-05 | Q35: -0.004406225625 | S35: PRODEJNÍ CENA | T35: 0.0003781111716 | U35: 0.01991719967 | W35: VYUŽITÍ PRACOVNÍ DOBY | X35: 0.0004404015172 | Y35: 0.02132744531 | AA35: PRODEJNÍ CENA | AB35: 0.0002663185368 | AC35: -0.01650544202
O36: HYDROXID LITHNÝ MONOHYDRÁT | P36: 5.731181821e-06 | Q36: -0.002372073488 | S36: DUSIČNAN ZINEČNATY ROZTOK | T36: 0.0003320436968 | U36: 0.01866449066 | W36: NÁKLADY NA SLUŽBY | X36: 0.0001736487713 | Y36: 0.01339214957 | AA36: MZDOVÉ NÁKLADY | AB36: 0.0001272769777 | AC36: 0.01141041364
O37: MZDOVÉ NÁKLADY | P37: 1.922264366e-06 | Q37: -0.001373765495 | S37: KYSELINA FOSFOREČNÁ | T37: 0.0001400628676 | U37: -0.01212216049 | W37: ACETÁT ZIRKONU | X37: 0.0001218231725 | Y37: 0.01121706887 | AA37: NÁKLADY NA PROSTOR | AB37: 0.0001064848779 | AC37: 0.01043687375
S38: HYDROXID LITHNÝ MONOHYDRÁT | T38: 1.165296589e-05 | U38: 0.003496525986 | W38: KYSELINA ASKORBOVÁ | X38: 1.64629809e-06 | Y38: -0.001303973216 | AA38: OXYSULFID TITANU | AB38: 6.507621458e-06 | AC38: 0.00258010632
O66: USA | S66: Británie | W66: Česko | AA66: Čína
O67: Položka | P67: Příspěvek k odchylkám | Q67: Hodnocení korelace | S67: Položka | T67: Příspěvek k odchylkám | U67: Hodnocení korelace | W67: Položka | X67: Příspěvek k odchylkám | Y67: Hodnocení korelace | AA67: Položka | AB67: Příspěvek k odchylkám | AC67: Hodnocení korelace
O68: WK US | P68: 0.4352674898 | Q68: 0.6722320306 | S68: WK UK | T68: 0.4432010339 | U68: 0.6691499993 | W68: WK ČR | X68: 0.4310448941 | Y68: 0.669835543 | AA68: WK CH | AB68: 0.4619675885 | AC68: 0.680102114
O69: Cena TiO2 | P69: 0.2220884344 | Q69: 0.4801799895 | S69: Cena TiO2 | T69: 0.2063845414 | U69: 0.4566270992 | W69: Cena TiO2 | X69: 0.2282425584 | Y69: 0.4874221369 | AA69: Cena TiO2 | AB69: 0.2018501543 | AC69: 0.4495550849
O70: Cena ZrO2 | P70: 0.1135985597 | Q70: 0.3434215144 | S70: Cena ZrO2 | T70: 0.1079936051 | U70: 0.3303103021 | W70: Cena ZrO2 | X70: 0.09719362169 | Y70: 0.3180722775 | AA70: Cena ZrO2 | AB70: 0.09399079643 | AC70: 0.3067686932
O71: OXYSULFID TITANU | P71: 0.07366722863 | Q71: -0.2765529226 | S71: OXYSULFID TITANU | T71: 0.08803626382 | U71: -0.2982317666 | W71: Cena ZnO | X71: 0.08545921067 | Y71: 0.2982540671 | AA71: OXYSULFID TITANU | AB71: 0.07713366768 | AC71: -0.277901162
O72: Cena ZnO | P72: 0.06737475733 | Q72: 0.2644780861 | S72: Cena ZnO | T72: 0.07124613492 | U72: 0.2682895481 | W72: OXYSULFID TITANU | X72: 0.06896599633 | Y72: -0.267931912 | AA72: Cena ZnO | AB72: 0.06801383063 | AC72: 0.2609558212
O73: DUSIČNAN ZINEČNATY ROZTOK | P73: 0.01491616459 | Q73: -0.1244427701 | S73: ACETÁT ZIRKONU | T73: 0.01313146401 | U73: -0.1151806893 | W73: Cena LiFePO4 | X73: 0.009802691185 | Y73: 0.1010135413 | AA73: ACETÁT ZIRKONU | AB73: 0.01416493965 | AC73: -0.1190901208
O74: Voda US | P74: 0.005968459432 | Q74: -0.07871766618 | S74: Cena LiFePO4 | T74: 0.006863633167 | U74: 0.08327221782 | W74: ACETÁT ZIRKONU | X74: 0.009763300178 | Y74: -0.1008103812 | AA74: DUSIČNAN ZINEČNATY ROZTOK | AB74: 0.009416223185 | AC74: -0.09709720827
O75: ACETÁT ZIRKONU | P75: 0.005022018282 | Q75: -0.07220715455 | S75: Pozemek CH | T75: 0.004605985009 | U75: 0.06821570305 | W75: DUSIČNAN ZINEČNATY ROZTOK | X75: 0.006797628522 | Y75: -0.08411736303 | AA75: Odvody zaměstnavatele US | AB75: 0.005181318275 | AC75: -0.07202586901
O76: Cena LiFePO4 | P76: 0.004655483872 | Q76: 0.06952219888 | S76: Clo a poplatky CH | T76: 0.004110035669 | U76: -0.06443857011 | W76: Telefon ČR | X76: 0.006479334713 | Y76: 0.08212438753 | AA76: Pozemek CH | AB76: 0.003827518957 | AC76: 0.06190518798
O77: Telekomunikační služby CH | P77: 0.003117467229 | Q77: -0.05689079922 | S77: Cena TiO2 | T77: 0.003129797479 | U77: -0.05623170056 | W77: Audit a účetní služby CH | X77: 0.002747607619 | Y77: -0.05347912487 | AA77: Audit a účetní služby US | AB77: 0.003674286376 | AC77: -0.06065336116
O78: Mzdové náklady UK | P78: 0.002591258573 | Q78: -0.05186763697 | S78: DUSIČNAN ZINEČNATY ROZTOK | T78: 0.00231967712 | U78: -0.0484101991 | W78: Pozemek ČR | X78: 0.002669571976 | Y78: -0.05271421618 | AA78: Cena ZrO2 | AB78: 0.003012466638 | AC78: -0.05491986923
O79: Elektřina CH | P79: 0.002568513726 | Q79: 0.05163950041 | S79: WK ČR | T79: 0.002051586821 | U79: -0.04552689688 | W79: Daň z nemovitosti (budovy) CH | X79: 0.001921960806 | Y79: 0.04472797118 | AA79: Telefon US | AB79: 0.002983209017 | AC79: -0.05465252266
O80: Odvody zaměstnavatele US | P80: 0.002286462054 | Q80: -0.04872177318 | S80: Cena ZnO | T80: 0.001694681491 | U80: 0.04137777584 | W80: Údržba zařízení UK | X80: 0.001886010693 | Y80: -0.04430768008 | AA80: Výstavba ČR | AB80: 0.00293683589 | AC80: 0.05422608006
O81: Pronájem haly US | P81: 0.002105982336 | Q81: 0.04675934819 | S81: Pojištění budovy ČR | T81: 0.001642785197 | U81: 0.04073929318 | W81: Laboratorní testy UK | X81: 0.001857765702 | Y81: 0.04397465149 | AA81: Cena LiFePO4 | AB81: 0.002889148337 | AC81: 0.05378402395
O82: Odvody zaměstnavatele CH | P82: 0.001895360511 | Q82: -0.04435953659 | S82: Zemní plyn US | T82: 0.001615121429 | U82: 0.0403948211 | W82: Cena TiO2 | X82: 0.001779722878 | Y82: -0.04304107676 | AA82: HYDROXID DRASELNÝ | AB82: 0.002435646729 | AC82: -0.04938277835
O83: PRODEJNÍ CENA (C18) | P83: 0.001888238898 | Q83: -0.04427612007 | S83: Voda UK | T83: 0.001572530271 | U83: -0.03985865196 | W83: Cena ZrO2 | X83: 0.001720625542 | Y83: -0.04232043458 | AA83: KYSELINA ASKORBOVÁ | AB83: 0.002320523536 | AC83: -0.04820158955
O84: Údržba zařízení US | P84: 0.001802611584 | Q84: 0.04326056282 | S84: Daň z nemovitosti (pozemku) CH | T84: 0.00153970188 | U84: -0.03944040986 | W84: Clo a poplatky CH | X84: 0.001610919219 | Y84: -0.04094904874 | AA84: Cena ZnO | AB84: 0.002303697157 | AC84: 0.04802651401
O85: Zemní plyn ČR | P85: 0.001648351921 | Q85: -0.04136814584 | S85: Údržba zařízení CH | T85: 0.001526149295 | U85: -0.03926644732 | W85: WK CH | X85: 0.001548622664 | Y85: -0.04014946304 | AA85: Nájemné za hardware a software ČR | AB85: 0.002146978264 | AC85: -0.04636413859
O86: Clo a poplatky US | P86: 0.00160826233 | Q86: 0.04086199172 | S86: Mzdové náklady CH | T86: 0.001385865004 | U86: 0.03741825785 | W86: Cena LiFePO4 | X86: 0.001510275656 | Y86: 0.03964925641 | AA86: Telekomunikační služby UK | AB86: 0.001964588865 | AC86: 0.04435108109
O87: Voda ČR | P87: 0.001538776329 | Q87: -0.03996951099 | S87: Daň z nemovitosti (pozemku) ČR | T87: 0.001274328086 | U87: 0.03588093297 | W87: Právní služby US | X87: 0.001489899973 | Y87: 0.03938088685 | AA87: WK ČR | AB87: 0.001655512639 | AC87: -0.04071314218
O88: Telefon US | P88: 0.001523610642 | Q88: 0.03977205994 | S88: Audit a účetní služby CH | T88: 0.001234083186 | U88: -0.03530980483 | W88: Výstavba CH | X88: 0.001478912015 | Y88: -0.03923540181 | AA88: Nájemné za hardware a software CH | AB88: 0.001648746881 | AC88: 0.04062986366
O89: Právní služby UK | P89: 0.001491123681 | Q89: 0.03934575834 | S89: Internet CH | T89: 0.001188231768 | U89: 0.03464764166 | W89: Pronájem haly ČR | X89: 0.001414016087 | Y89: -0.03836490359 | AA89: Pronájem haly CH | AB89: 0.001646587329 | AC89: -0.04060324615
O90: Právní regulace US | P90: 0.001380242955 | Q90: -0.03785461696 | S90: Laboratorní testy CH | T90: 0.001166236824 | U90: 0.03432546858 | W90: Marketing a distribuce ČR | X90: 0.001329891241 | Y90: 0.0372061728 | AA90: Laboratorní testy CH | AB90: 0.001606373956 | AC90: 0.04010437003
O91: Nájemné za hardware a software ČR | P91: 0.001363426656 | Q91: -0.03762330791 | S91: Telefon CH | T91: 0.001154811244 | U91: 0.03415691204 | W91: Marketing a distribuce CH | X91: 0.001218846316 | Y91: -0.0356189744 | AA91: Telekomunikační služby CH | AB91: 0.001335979695 | AC91: 0.03657364964
O92: Telefon CH | P92: 0.001216909567 | Q92: -0.03554432239 | S92: Cestovní náklady CH | T92: 0.001131675136 | U92: 0.03381302195 | W92: TETRACHLORID TITANU | X92: 0.00120503711 | Y92: -0.03541662285 | AA92: Cena LiFePO4 | AB92: 0.001325128422 | AC92: -0.03642481511
O93: Other | P93: 0.02741480501 | S93: Other | T93: 0.02880004081 | W93: Other | X93: 0.02886107872 | AA93: Other | AB93: 0.02856825269

Sheet BEP
B2: BEPoint | J2: BEPrice
F4: BEPoint | N4: BEPrice
B5: TiO2 | C5: KG NANOČÁSTIC | D5: 0 | E5: =(F5-D5)/2 -> 18703.2739 | F5: 37406.54779 | G5: =F5+(F5-E5) -> 56109.82169 | H5: =G5+(F5-E5) -> 74813.09559 | J5: TiO2 | K5: CENA KG NANOČÁSTIC | L5: 0 | M5: =(N5-L5)/2 -> 12.35700523 | N5: 24.71401047 | O5: =N5+(N5-M5) -> 37.0710157 | P5: =Premise!C14 -> 40
C6: VARIABILNÍ NÁKLADY | D6: =(FCM!$N$169+FCM!$N$170)*D5 -> 0 | E6: =(FCM!$N$169+FCM!$N$170)*E5 -> 411703.1542 | F6: =(FCM!$N$169+FCM!$N$170)*F5 -> 823406.3084 | G6: =(FCM!$N$169+FCM!$N$170)*G5 -> 1235109.463 | H6: =(FCM!$N$169+FCM!$N$170)*H5 -> 1646812.617 | K6: VARIABILNÍ NÁKLADY | L6: =FCM!$N$169+FCM!$N$170 -> 22.01235765 | M6: =FCM!$N$169+FCM!$N$170 -> 22.01235765 | N6: =FCM!$N$169+FCM!$N$170 -> 22.01235765 | O6: =FCM!$N$169+FCM!$N$170 -> 22.01235765 | P6: =FCM!$N$169+FCM!$N$170 -> 22.01235765
C7: FIXNÍ NÁKLADY | D7: =(FCM!$N$100+FCM!$N$111+FCM!$N$123+FCM!$N$160)*Premise!$I$7 -> 672850.4084 | E7: =(FCM!$N$100+FCM!$N$111+FCM!$N$123+FCM!$N$160)*Premise!$I$7 -> 672850.4084 | F7: =(FCM!$N$100+FCM!$N$111+FCM!$N$123+FCM!$N$160)*Premise!$I$7 -> 672850.4084 | G7: =(FCM!$N$100+FCM!$N$111+FCM!$N$123+FCM!$N$160)*Premise!$I$7 -> 672850.4084 | H7: =(FCM!$N$100+FCM!$N$111+FCM!$N$123+FCM!$N$160)*Premise!$I$7 -> 672850.4084 | K7: FIXNÍ NÁKLADY | L7: =FCM!$N$171+FCM!$N$172+FCM!$N$173+FCM!$N$174 -> 2.701513941 | M7: =FCM!$N$171+FCM!$N$172+FCM!$N$173+FCM!$N$174 -> 2.701513941 | N7: =FCM!$N$171+FCM!$N$172+FCM!$N$173+FCM!$N$174 -> 2.701513941 | O7: =FCM!$N$171+FCM!$N$172+FCM!$N$173+FCM!$N$174 -> 2.701513941 | P7: =FCM!$N$171+FCM!$N$172+FCM!$N$173+FCM!$N$174 -> 2.701513941
C8: CELKOVÉ NÁKLADY | D8: =D6+D7 -> 672850.4084 | E8: =E6+E7 -> 1084553.563 | F8: 1496256.717 | G8: 1907959.871 | H8: 2319663.025 | K8: CELKOVÉ NÁKLADY | L8: =L6+L7 -> 24.71387159 | M8: =M6+M7 -> 24.71387159 | N8: 24.71387159 | O8: 24.71387159 | P8: 24.71387159
C9: VÝNOSY | D9: =Premise!$C$14*BEP!D5 -> 0 | E9: =Premise!$C$14*BEP!E5 -> 748130.9559 | F9: =Premise!$C$14*BEP!F5 -> 1496261.912 | G9: =Premise!$C$14*BEP!G5 -> 2244392.868 | H9: =Premise!$C$14*BEP!H5 -> 2992523.823 | K9: VÝNOSY | L9: =L5 -> 0 | M9: =M5 -> 12.35700523 | N9: 24.71401047 | O9: 37.0710157 | P9: 40
C10: ZISK | D10: =D9-D8 -> -672850.4084 | E10: =E9-E8 -> -336422.6067 | F10: 5.194943244 | G10: 336432.9966 | H10: 672860.7983 | K10: ZISK | L10: =L9-L8 -> -24.71387159 | M10: =M9-M8 -> -12.35686635 | N10: =N9-N8 -> 0.0001388779113 | O10: =O9-O8 -> 12.35714411 | P10: =P9-P8 -> 15.28612841
B12: ZrO2 | C12: KG NANOČÁSTIC | D12: 0 | E12: =(F12-D12)/2 -> 11485.98758 | F12: 22971.97516 | G12: =F12+(F12-E12) -> 34457.96273 | H12: =G12+(F12-E12) -> 45943.95031 | J12: ZrO2 | K12: CENA KG NANOČÁSTIC | L12: 0 | M12: =(N12-L12)/2 -> 6.998290243 | N12: 13.99658049 | O12: =N12+(N12-M12) -> 20.99487073 | P12: =Premise!D14 -> 43
C13: VARIABILNÍ NÁKLADY | D13: =(FCM!$O$169+FCM!$O$170)*D12 -> 0 | E13: =(FCM!$O$169+FCM!$O$170)*E12 -> 139581.6493 | F13: =(FCM!$O$169+FCM!$O$170)*F12 -> 279163.2986 | G13: =(FCM!$O$169+FCM!$O$170)*G12 -> 418744.9479 | H13: =(FCM!$O$169+FCM!$O$170)*H12 -> 558326.5972 | K13: VARIABILNÍ NÁKLADY | L13: =FCM!$O$169+FCM!$O$170 -> 12.152342 | M13: =FCM!$O$169+FCM!$O$170 -> 12.152342 | N13: =FCM!$O$169+FCM!$O$170 -> 12.152342 | O13: =FCM!$O$169+FCM!$O$170 -> 12.152342 | P13: =FCM!$O$169+FCM!$O$170 -> 12.152342
C14: FIXNÍ NÁKLADY | D14: =(FCM!$O$100+FCM!$O$111+FCM!$O$123+FCM!$O$160)*Premise!$I$7 -> 708631.6331 | E14: =(FCM!$O$100+FCM!$O$111+FCM!$O$123+FCM!$O$160)*Premise!$I$7 -> 708631.6331 | F14: =(FCM!$O$100+FCM!$O$111+FCM!$O$123+FCM!$O$160)*Premise!$I$7 -> 708631.6331 | G14: =(FCM!$O$100+FCM!$O$111+FCM!$O$123+FCM!$O$160)*Premise!$I$7 -> 708631.6331 | H14: =(FCM!$O$100+FCM!$O$111+FCM!$O$123+FCM!$O$160)*Premise!$I$7 -> 708631.6331 | K14: FIXNÍ NÁKLADY | L14: =FCM!$O$171+FCM!$O$172+FCM!$O$173+FCM!$O$174 -> 1.844238483 | M14: =FCM!$O$171+FCM!$O$172+FCM!$O$173+FCM!$O$174 -> 1.844238483 | N14: =FCM!$O$171+FCM!$O$172+FCM!$O$173+FCM!$O$174 -> 1.844238483 | O14: =FCM!$O$171+FCM!$O$172+FCM!$O$173+FCM!$O$174 -> 1.844238483 | P14: =FCM!$O$171+FCM!$O$172+FCM!$O$173+FCM!$O$174 -> 1.844238483
C15: CELKOVÉ NÁKLADY | D15: =D13+D14 -> 708631.6331 | E15: =E13+E14 -> 848213.2824 | F15: 987794.9317 | G15: 1127376.581 | H15: 1266958.23 | K15: CELKOVÉ NÁKLADY | L15: =L13+L14 -> 13.99658049 | M15: =M13+M14 -> 13.99658049 | N15: 13.99658049 | O15: 13.99658049 | P15: 13.99658049
C16: VÝNOSY | D16: =Premise!$D$14*BEP!D12 -> 0 | E16: =Premise!$D$14*BEP!E12 -> 493897.4659 | F16: =Premise!$D$14*BEP!F12 -> 987794.9317 | G16: =Premise!$D$14*BEP!G12 -> 1481692.398 | H16: =Premise!$D$14*BEP!H12 -> 1975589.863 | K16: VÝNOSY | L16: =L12 -> 0 | M16: =M12 -> 6.998290243 | N16: 13.99658049 | O16: 20.99487073 | P16: 43
C17: ZISK | D17: =D16-D15 -> -708631.6331 | E17: =E16-E15 -> -354315.8166 | F17: 0 | G17: 354315.8166 | H17: 708631.6331 | K17: ZISK | L17: =L16-L15 -> -13.99658049 | M17: =M16-M15 -> -6.998290243 | N17: -1.261213356e-13 | O17: 6.998290243 | P17: 29.00341951
B19: ZnO | C19: KG NANOČÁSTIC | D19: 0 | E19: =(F19-D19)/2 -> 11155.06286 | F19: 22310.12571 | G19: =F19+(F19-E19) -> 33465.18857 | H19: =G19+(F19-E19) -> 44620.25143 | J19: ZnO | K19: CENA KG NANOČÁSTIC | L19: 0 | M19: =(N19-L19)/2 -> 9.070706453 | N19: 18.14141291 | O19: =N19+(N19-M19) -> 27.21211936 | P19: =Premise!E14 -> 43
C20: VARIABILNÍ NÁKLADY | D20: =(FCM!$P$169+FCM!$P$170)*D19 -> 0 | E20: =(FCM!$P$169+FCM!$P$170)*E19 -> 143242.4987 | F20: =(FCM!$P$169+FCM!$P$170)*F19 -> 286484.9973 | G20: =(FCM!$P$169+FCM!$P$170)*G19 -> 429727.496 | H20: =(FCM!$P$169+FCM!$P$170)*H19 -> 572969.9946 | K20: VARIABILNÍ NÁKLADY | L20: =FCM!$P$169+FCM!$P$170 -> 12.84103017 | M20: =FCM!$P$169+FCM!$P$170 -> 12.84103017 | N20: =FCM!$P$169+FCM!$P$170 -> 12.84103017 | O20: =FCM!$P$169+FCM!$P$170 -> 12.84103017 | P20: =FCM!$P$169+FCM!$P$170 -> 12.84103017
C21: FIXNÍ NÁKLADY | D21: =(FCM!$P$100+FCM!$P$111+FCM!$P$123+FCM!$P$160)*Premise!$I$7 -> 672850.4084 | E21: =(FCM!$P$100+FCM!$P$111+FCM!$P$123+FCM!$P$160)*Premise!$I$7 -> 672850.4084 | F21: =(FCM!$P$100+FCM!$P$111+FCM!$P$123+FCM!$P$160)*Premise!$I$7 -> 672850.4084 | G21: =(FCM!$P$100+FCM!$P$111+FCM!$P$123+FCM!$P$160)*Premise!$I$7 -> 672850.4084 | H21: =(FCM!$P$100+FCM!$P$111+FCM!$P$123+FCM!$P$160)*Premise!$I$7 -> 672850.4084 | K21: FIXNÍ NÁKLADY | L21: =FCM!$P$171+FCM!$P$172+FCM!$P$173+FCM!$P$174 -> 5.30038274 | M21: =FCM!$P$171+FCM!$P$172+FCM!$P$173+FCM!$P$174 -> 5.30038274 | N21: =FCM!$P$171+FCM!$P$172+FCM!$P$173+FCM!$P$174 -> 5.30038274 | O21: =FCM!$P$171+FCM!$P$172+FCM!$P$173+FCM!$P$174 -> 5.30038274 | P21: =FCM!$P$171+FCM!$P$172+FCM!$P$173+FCM!$P$174 -> 5.30038274
C22: CELKOVÉ NÁKLADY | D22: =D20+D21 -> 672850.4084 | E22: =E20+E21 -> 816092.9071 | F22: 959335.4057 | G22: 1102577.904 | H22: 1245820.403 | K22: CELKOVÉ NÁKLADY | L22: =L20+L21 -> 18.14141291 | M22: =M20+M21 -> 18.14141291 | N22: 18.14141291 | O22: 18.14141291 | P22: 18.14141291
C23: VÝNOSY | D23: =Premise!$E$14*BEP!D19 -> 0 | E23: =Premise!$E$14*BEP!E19 -> 479667.7029 | F23: =Premise!$E$14*BEP!F19 -> 959335.4057 | G23: =Premise!$E$14*BEP!G19 -> 1439003.109 | H23: =Premise!$E$14*BEP!H19 -> 1918670.811 | K23: VÝNOSY | L23: =L19 -> 0 | M23: =M19 -> 9.070706453 | N23: 18.14141291 | O23: 27.21211936 | P23: 43
C24: ZISK | D24: =D23-D22 -> -672850.4084 | E24: =E23-E22 -> -336425.2042 | F24: 0 | G24: 336425.2042 | H24: 672850.4084 | K24: ZISK | L24: =L23-L22 -> -18.14141291 | M24: =M23-M22 -> -9.070706453 | N24: 0 | O24: 9.070706453 | P24: 24.85858709
B26: LiFePO4 | C26: KG NANOČÁSTIC | D26: 0 | E26: =(F26-D26)/2 -> 20915.14228 | F26: 41830.28456 | G26: =F26+(F26-E26) -> 62745.42684 | H26: =G26+(F26-E26) -> 83660.56912 | J26: LiFePO4 | K26: CENA KG NANOČÁSTIC | L26: 0 | M26: =(N26-L26)/2 -> 8.666870928 | N26: 17.33374186 | O26: =N26+(N26-M26) -> 26.00061278 | P26: =Premise!F14 -> 30
C27: VARIABILNÍ NÁKLADY | D27: =(FCM!$Q$169+FCM!$N$170)*D26 -> 0 | E27: =(FCM!$Q$169+FCM!$N$170)*E26 -> 291029.0642 | F27: =(FCM!$Q$169+FCM!$N$170)*F26 -> 582058.1284 | G27: =(FCM!$Q$169+FCM!$N$170)*G26 -> 873087.1927 | H27: =(FCM!$Q$169+FCM!$N$170)*H26 -> 1164116.257 | K27: VARIABILNÍ NÁKLADY | L27: =FCM!$Q$169+FCM!$N$170 -> 13.91475422 | M27: =FCM!$Q$169+FCM!$N$170 -> 13.91475422 | N27: =FCM!$Q$169+FCM!$N$170 -> 13.91475422 | O27: =FCM!$Q$169+FCM!$N$170 -> 13.91475422 | P27: =FCM!$Q$169+FCM!$N$170 -> 13.91475422
C28: FIXNÍ NÁKLADY | D28: =(FCM!$Q$100+FCM!$Q$111+FCM!$Q$123+FCM!$Q$160)*Premise!$I$7 -> 672850.4084 | E28: =(FCM!$Q$100+FCM!$Q$111+FCM!$Q$123+FCM!$Q$160)*Premise!$I$7 -> 672850.4084 | F28: =(FCM!$Q$100+FCM!$Q$111+FCM!$Q$123+FCM!$Q$160)*Premise!$I$7 -> 672850.4084 | G28: =(FCM!$Q$100+FCM!$Q$111+FCM!$Q$123+FCM!$Q$160)*Premise!$I$7 -> 672850.4084 | H28: =(FCM!$Q$100+FCM!$Q$111+FCM!$Q$123+FCM!$Q$160)*Premise!$I$7 -> 672850.4084 | K28: FIXNÍ NÁKLADY | L28: =FCM!$Q$171+FCM!$Q$172+FCM!$Q$173+FCM!$Q$174 -> 3.418987641 | M28: =FCM!$Q$171+FCM!$Q$172+FCM!$Q$173+FCM!$Q$174 -> 3.418987641 | N28: =FCM!$Q$171+FCM!$Q$172+FCM!$Q$173+FCM!$Q$174 -> 3.418987641 | O28: =FCM!$Q$171+FCM!$Q$172+FCM!$Q$173+FCM!$Q$174 -> 3.418987641 | P28: =FCM!$Q$171+FCM!$Q$172+FCM!$Q$173+FCM!$Q$174 -> 3.418987641
C29: CELKOVÉ NÁKLADY | D29: =D27+D28 -> 672850.4084 | E29: =E27+E28 -> 963879.4726 | F29: 1254908.537 | G29: 1545937.601 | H29: 1836966.665 | K29: CELKOVÉ NÁKLADY | L29: =L27+L28 -> 17.33374186 | M29: =M27+M28 -> 17.33374186 | N29: 17.33374186 | O29: 17.33374186 | P29: 17.33374186
C30: VÝNOSY | D30: =Premise!$F$14*BEP!D26 -> 0 | E30: =Premise!$F$14*BEP!E26 -> 627454.2684 | F30: =Premise!$F$14*BEP!F26 -> 1254908.537 | G30: =Premise!$F$14*BEP!G26 -> 1882362.805 | H30: =Premise!$F$14*BEP!H26 -> 2509817.074 | K30: VÝNOSY | L30: =L26 -> 0 | M30: =M26 -> 8.666870928 | N30: 17.33374186 | O30: 26.00061278 | P30: 30
C31: ZISK | D31: =D30-D29 -> -672850.4084 | E31: =E30-E29 -> -336425.2042 | F31: 0 | G31: 336425.2042 | H31: 672850.4084 | K31: ZISK | L31: =L30-L29 -> -17.33374186 | M31: =M30-M29 -> -8.666870928 | N31: 0 | O31: 8.666870928 | P31: 12.66625814

Sheet Vstupy
B1: VSTUPY
C3: 2000 | D3: 2001 | E3: 2002 | F3: 2003 | G3: 2004 | H3: 2005 | I3: 2006 | J3: 2007 | K3: 2008 | L3: 2009 | M3: 2010 | N3: 2011 | O3: 2012 | P3: 2013 | Q3: 2014 | R3: 2015 | S3: 2016 | T3: 2017 | U3: 2018 | V3: 2019 | W3: 2020 | X3: 2021 | Y3: 2022 | Z3: 2023 | AA3: 2024 | AB3: 2025 | AC3: 2026 | AD3: 2027
C4: Data | T4: Prognóza (metoda nejmenších čtverců)
B5: - | C5: 2000 | D5: 2001 | E5: 2002 | F5: 2003 | G5: 2004 | H5: 2005 | I5: 2006 | J5: 2007 | K5: 2008 | L5: 2009 | M5: 2010 | N5: 2011 | O5: 2012 | P5: 2013 | Q5: 2014 | R5: 2015 | S5: 2016 | T5: 2017 | U5: 2018 | V5: 2019 | W5: 2020 | X5: 2021 | Y5: 2022 | Z5: 2023 | AA5: 2024 | AB5: 2025 | AC5: 2026 | AD5: 2027 | AE5: 2028 | AF5: 2029 | AG5: 2030 | AH5: Pozn.
B6: USA | C6: 1 | D6: 2 | E6: 3 | F6: 4 | G6: 5 | H6: 6 | I6: 7 | J6: 8 | K6: 9 | L6: 10 | M6: 11 | N6: 12 | O6: 13 | P6: 14 | Q6: 15 | R6: 16 | S6: 17 | T6: 18 | U6: 19 | V6: 20 | W6: 21 | X6: 22 | Y6: 23 | Z6: 24 | AA6: 25 | AB6: 26 | AC6: 27 | AD6: 28 | AE6: 29 | AF6: 30 | AG6: 31
B7: Elektřina | C7: 3.04 | D7: 3.47 | E7: 3.2 | F7: 3.14 | G7: 2.88 | H7: 3.15 | I7: 3.35 | J7: 3.2 | K7: 3.73 | L7: 4.37 | M7: 4.4 | N7: 4.25 | O7: 4.21 | P7: 4.38 | Q7: 4.31 | R7: 4.52 | S7: 5 | T7: =GROWTH($C7:S7,,T$6) -> 4.94207065 | U7: =GROWTH($C7:T7,,U$6) -> 5.096526597 | V7: =GROWTH($C7:U7,,V$6) -> 5.255809799 | W7: =GROWTH($C7:V7,,W$6) -> 5.420071126 | X7: =GROWTH($C7:W7,,X$6) -> 5.589466158 | Y7: =GROWTH($C7:X7,,Y$6) -> 5.764155342 | Z7: =GROWTH($C7:Y7,,Z$6) -> 5.944304137 | AA7: =GROWTH($C7:Z7,,AA$6) -> 6.130083174 | AB7: =GROWTH($C7:AA7,,AB$6) -> 6.321668416 | AC7: =GROWTH($C7:AB7,,AC$6) -> 6.519241326 | AD7: =GROWTH($C7:AC7,,AD$6) -> 6.722989039 | AE7: =GROWTH($C7:AD7,,AE$6) -> 6.933104538 | AF7: =GROWTH($C7:AE7,,AF$6) -> 7.149786836 | AG7: =GROWTH($C7:AF7,,AG$6) -> 7.373241168 | AH7: -
B8: Zemní plyn | C8: 4.23 | D8: 4.07 | E8: 3.33 | F8: 5.63 | G8: 5.85 | H8: 8.78 | I8: 6.76 | J8: 6.95 | K8: 8.85 | L8: 3.89 | M8: 4.39 | N8: 4.01 | O8: 2.76 | P8: 3.71 | Q8: 4.35 | R8: 2.6 | S8: 2.46 | T8: =GROWTH($C8:S8,,T$6) -> 3.260415843 | U8: =GROWTH($C8:T8,,U$6) -> 3.144611813 | V8: =GROWTH($C8:U8,,V$6) -> 3.032920932 | W8: =GROWTH($C8:V8,,W$6) -> 2.925197106 | X8: =GROWTH($C8:W8,,X$6) -> 2.821299435 | Y8: =GROWTH($C8:X8,,Y$6) -> 2.72109202 | Z8: =GROWTH($C8:Y8,,Z$6) -> 2.62444379 | AA8: =GROWTH($C8:Z8,,AA$6) -> 2.531228328 | AB8: =GROWTH($C8:AA8,,AB$6) -> 2.44132371 | AC8: =GROWTH($C8:AB8,,AC$6) -> 2.35461234 | AD8: =GROWTH($C8:AC8,,AD$6) -> 2.2709808 | AE8: =GROWTH($C8:AD8,,AE$6) -> 2.1903197 | AF8: =GROWTH($C8:AE8,,AF$6) -> 2.112523536 | AG8: =GROWTH($C8:AF8,,AG$6) -> 2.037490549 | AH8: BP hodnoty USA
B9: Voda | C9: =$P$9*C18/$P$18 -> 1005.831471 | D9: 1052.832941 | E9: 1043.432647 | F9: 968.2302941 | G9: 921.2288235 | H9: 921.2288235 | I9: 940.0294118 | J9: 902.4282353 | K9: 883.6276471 | L9: 921.2288235 | M9: 921.2288235 | N9: 893.0279412 | O9: 930.6291176 | P9: 958.83 | Q9: =$P$9*Q18/$P$18 -> 968.2302941 | R9: 1062.233235 | S9: 1062.233235 | T9: 958.8555535 | U9: 958.6879046 | V9: 958.520285 | W9: 958.3526948 | X9: 958.1851338 | Y9: 958.0176022 | Z9: 957.8500998 | AA9: 957.6826267 | AB9: 957.5151829 | AC9: 957.3477684 | AD9: 957.1803832 | AE9: =$P$9*AE18/$P$18 -> 957.0130272 | AF9: 956.8457005 | AG9: 956.678403 | AH9: Vodné i stočné
B10: Mzdové náklady | C10: 51877 | D10: 52428 | E10: 52752 | F10: 53321 | G10: 54367 | H10: 54432 | I10: 55243 | J10: 56439 | K10: 56233 | L10: 56610 | M10: 57013 | N10: 57176 | O10: 57653 | P10: 57369 | Q10: 58219 | R10: 59961 | S10: 60154 | T10: =GROWTH($C10:S10,,T$6) -> 60430.70444 | U10: =GROWTH($C10:T10,,U$6) -> 60955.80943 | V10: =GROWTH($C10:U10,,V$6) -> 61485.47724 | W10: =GROWTH($C10:V10,,W$6) -> 62019.74754 | X10: =GROWTH($C10:W10,,X$6) -> 62558.66032 | Y10: =GROWTH($C10:X10,,Y$6) -> 63102.25591 | Z10: =GROWTH($C10:Y10,,Z$6) -> 63650.575 | AA10: =GROWTH($C10:Z10,,AA$6) -> 64203.65865 | AB10: =GROWTH($C10:AA10,,AB$6) -> 64761.54824 | AC10: =GROWTH($C10:AB10,,AC$6) -> 65324.28555 | AD10: =GROWTH($C10:AC10,,AD$6) -> 65891.91269 | AE10: =GROWTH($C10:AD10,,AE$6) -> 66464.47215 | AF10: =GROWTH($C10:AE10,,AF$6) -> 67042.0068 | AG10: =GROWTH($C10:AF10,,AG$6) -> 67624.55986 | AH10: Dollars, Average annual wages
B11: Odměny | C11: =C10*$C$163 -> 2621.727578 | D11: 2649.573673 | E11: 2665.947784 | F11: 2694.703552 | G11: 2747.56565 | H11: 2750.850579 | I11: 2791.836393 | J11: 2852.279098 | K11: 2841.868398 | L11: 2860.92099 | M11: 2881.287553 | N11: 2889.525146 | O11: 2913.631475 | P11: 2899.27886 | Q11: 2942.235631 | R11: 3030.271744 | S11: 3040.025458 | T11: 3054.009376 | U11: 3080.546805 | V11: 3107.314828 | W11: 3134.315448 | X11: 3161.550687 | Y11: 3189.022583 | Z11: 3216.733192 | AA11: 3244.68459 | AB11: 3272.878867 | AC11: 3301.318135 | AD11: 3330.004523 | AE11: =AE10*$C$163 -> 3358.940177 | AF11: 3388.127264 | AG11: 3417.567969 | AH11: -
B12: Pozemek | C12: =$S$12*C18/$S$18 -> 20.53687465 | D12: 21.49654169 | E12: 21.30460828 | F12: 19.76914102 | G12: 18.80947398 | H12: 18.80947398 | I12: 19.19334079 | J12: 18.42560716 | K12: 18.04174035 | L12: 18.80947398 | M12: 18.80947398 | N12: 18.23367375 | O12: 19.00140739 | P12: 19.57720761 | Q12: 19.76914102 | R12: 21.6884751 | S12: =13500/622.4504 -> 21.6884751 | T12: =$S$12*T18/$S$18 -> 19.57772936 | U12: 19.57430633 | V12: 19.57088391 | W12: 19.56746208 | X12: 19.56404086 | Y12: 19.56062023 | Z12: 19.5572002 | AA12: 19.55378076 | AB12: 19.55036193 | AC12: 19.54694369 | AD12: 19.54352605 | AE12: =$S$12*AE18/$S$18 -> 19.54010901 | AF12: 19.53669256 | AG12: 19.53327671 | AH12: -
B13: Výstavba | C13: =$S$13*C18/$S$18 -> 676.0884956 | D13: 707.6814159 | E13: 701.3628319 | F13: 650.8141593 | G13: 619.2212389 | H13: 619.2212389 | I13: 631.8584071 | J13: 606.5840708 | K13: 593.9469027 | L13: 619.2212389 | M13: 619.2212389 | N13: 600.2654867 | O13: 625.539823 | P13: 644.4955752 | Q13: 650.8141593 | R13: 714 | S13: 714 | T13: =$S$13*T18/$S$18 -> 644.5127515 | U13: 644.4000631 | V13: 644.2873945 | W13: 644.1747456 | X13: 644.0621163 | Y13: 643.9495068 | Z13: 643.8369169 | AA13: 643.7243468 | AB13: 643.6117963 | AC13: 643.4992655 | AD13: 643.3867543 | AE13: =$S$13*AE18/$S$18 -> 643.2742629 | AF13: 643.1617911 | AG13: 643.0493389 | AH13: Zdroj Houston
B14: Pronájem haly | C14: - | D14: - | E14: - | F14: - | G14: - | H14: - | I14: - | J14: - | K14: - | L14: - | M14: - | N14: - | O14: - | P14: 4.68 | Q14: 5.87 | R14: 7.34 | S14: 6.85 | T14: 6.32 | U14: =GROWTH($P14:T14,,U$6-13) -> 7.701866899 | V14: =GROWTH($P14:U14,,V$6-13) -> 8.30606836 | W14: =GROWTH($P14:V14,,W$6-13) -> 8.957668641 | X14: =GROWTH($P14:W14,,X$6-13) -> 9.660386119 | Y14: =GROWTH($P14:X14,,Y$6-13) -> 10.41823087 | Z14: =GROWTH($P14:Y14,,Z$6-13) -> 11.23552756 | AA14: =GROWTH($P14:Z14,,AA$6-13) -> 12.11694011 | AB14: =GROWTH($P14:AA14,,AB$6-13) -> 13.06749834 | AC14: =GROWTH($P14:AB14,,AC$6-13) -> 14.09262662 | AD14: =GROWTH($P14:AC14,,AD$6-13) -> 15.19817488 | AE14: =GROWTH($P14:AD14,,AE$6-13) -> 16.39045198 | AF14: =GROWTH($P14:AE14,,AF$6-13) -> 17.67626166 | AG14: =GROWTH($P14:AF14,,AG$6-13) -> 19.06294144 | AH14: Roční náklady Houston
B15: Inflace | C15: =AVERAGEIF(Inflace!$F$4:'Inflace'!$H$216,C5,Inflace!$H$4:'Inflace'!$H$216)/100 -> 0.03365833333 | D15: =AVERAGEIF(Inflace!$F$4:'Inflace'!$H$216,D5,Inflace!$H$4:'Inflace'!$H$216)/100 -> 0.02825833333 | E15: =AVERAGEIF(Inflace!$F$4:'Inflace'!$H$216,E5,Inflace!$H$4:'Inflace'!$H$216)/100 -> 0.0158 | F15: =AVERAGEIF(Inflace!$F$4:'Inflace'!$H$216,F5,Inflace!$H$4:'Inflace'!$H$216)/100 -> 0.022675 | G15: =AVERAGEIF(Inflace!$F$4:'Inflace'!$H$216,G5,Inflace!$H$4:'Inflace'!$H$216)/100 -> 0.02670833333 | H15: =AVERAGEIF(Inflace!$F$4:'Inflace'!$H$216,H5,Inflace!$H$4:'Inflace'!$H$216)/100 -> 0.03385 | I15: =AVERAGEIF(Inflace!$F$4:'Inflace'!$H$216,I5,Inflace!$H$4:'Inflace'!$H$216)/100 -> 0.0323 | J15: =AVERAGEIF(Inflace!$F$4:'Inflace'!$H$216,J5,Inflace!$H$4:'Inflace'!$H$216)/100 -> 0.028475 | K15: =AVERAGEIF(Inflace!$F$4:'Inflace'!$H$216,K5,Inflace!$H$4:'Inflace'!$H$216)/100 -> 0.03841666667 | L15: =AVERAGEIF(Inflace!$F$4:'Inflace'!$H$216,L5,Inflace!$H$4:'Inflace'!$H$216)/100 -> -0.002916666667 | M15: =AVERAGEIF(Inflace!$F$4:'Inflace'!$H$216,M5,Inflace!$H$4:'Inflace'!$H$216)/100 -> 0.0164 | N15: =AVERAGEIF(Inflace!$F$4:'Inflace'!$H$216,N5,Inflace!$H$4:'Inflace'!$H$216)/100 -> 0.0315 | O15: =AVERAGEIF(Inflace!$F$4:'Inflace'!$H$216,O5,Inflace!$H$4:'Inflace'!$H$216)/100 -> 0.0207 | P15: =AVERAGEIF(Inflace!$F$4:'Inflace'!$H$216,P5,Inflace!$H$4:'Inflace'!$H$216)/100 -> 0.01461666667 | Q15: =AVERAGEIF(Inflace!$F$4:'Inflace'!$H$216,Q5,Inflace!$H$4:'Inflace'!$H$216)/100 -> 0.01616666667 | R15: =AVERAGEIF(Inflace!$F$4:'Inflace'!$H$216,R5,Inflace!$H$4:'Inflace'!$H$216)/100 -> 0.001466666667 | S15: =AVERAGEIF(Inflace!$F$4:'Inflace'!$H$216,S5,Inflace!$H$4:'Inflace'!$H$216)/100 -> 0.01256666667 | T15: =AVERAGEIF(Inflace!$F$4:'Inflace'!$H$216,T5,Inflace!$H$4:'Inflace'!$H$216)/100 -> 0.02131111111 | U15: =GROWTH($M15:T15,,U$6-10) -> 0.00754982783 | V15: =GROWTH($M15:U15,,V$6-10) -> 0.006654637676 | W15: =GROWTH($M15:V15,,W$6-10) -> 0.005865591057 | X15: =GROWTH($M15:W15,,X$6-10) -> 0.005170102434 | Y15: =GROWTH($M15:X15,,Y$6-10) -> 0.004557078548 | Z15: =GROWTH($M15:Y15,,Z$6-10) -> 0.004016741478 | AA15: =GROWTH($M15:Z15,,AA$6-10) -> 0.00354047268 | AB15: =GROWTH($M15:AA15,,AB$6-10) -> 0.00312067552 | AC15: =GROWTH($M15:AB15,,AC$6-10) -> 0.002750654102 | AD15: =GROWTH($M15:AC15,,AD$6-10) -> 0.00242450647 | AE15: =GROWTH($M15:AD15,,AE$6-10) -> 0.002137030468 | AF15: =GROWTH($M15:AE15,,AF$6-10) -> 0.001883640765 | AG15: =GROWTH($M15:AF15,,AG$6-10) -> 0.001660295716 | AH15: -
B16: Odvody zaměstnavatele | C16: - | D16: - | E16: - | F16: - | G16: - | H16: - | I16: - | J16: - | K16: - | L16: 0.0765 | M16: 0.0765 | N16: 0.0765 | O16: 0.0765 | P16: 0.0765 | Q16: 0.0765 | R16: 0.0765 | S16: 0.0765 | T16: 0.0765 | U16: =GROWTH($L16:T16,,U$6-10) -> 0.0765 | V16: =GROWTH($L16:U16,,V$6-10) -> 0.0765 | W16: =GROWTH($L16:V16,,W$6-10) -> 0.0765 | X16: =GROWTH($L16:W16,,X$6-10) -> 0.0765 | Y16: =GROWTH($L16:X16,,Y$6-10) -> 0.0765 | Z16: =GROWTH($L16:Y16,,Z$6-10) -> 0.0765 | AA16: =GROWTH($L16:Z16,,AA$6-10) -> 0.0765 | AB16: =GROWTH($L16:AA16,,AB$6-10) -> 0.0765 | AC16: =GROWTH($L16:AB16,,AC$6-10) -> 0.0765 | AD16: =GROWTH($L16:AC16,,AD$6-10) -> 0.0765 | AE16: =GROWTH($L16:AD16,,AE$6-10) -> 0.0765 | AF16: =GROWTH($L16:AE16,,AF$6-10) -> 0.0765 | AG16: =GROWTH($L16:AF16,,AG$6-10) -> 0.0765 | AH16: -
B17: Clo a poplatky | C17: 0.01504177854 | D17: 0.01644598948 | E17: 0.01846975241 | F17: 0.01992906918 | G17: 0.01996630659 | H17: 0.01817714477 | I17: 0.01707026674 | J17: 0.01760561657 | K17: 0.01926040265 | L17: 0.02015454557 | M17: 0.02217991809 | N17: 0.02141762213 | O17: 0.02110203804 | P17: 0.02008274162 | Q17: 0.019492193 | R17: 0.0185150559 | S17: 0.01804241559 | T17: =GROWTH($C17:S17,,T$6) -> 0.02066249676 | U17: =GROWTH($C17:T17,,U$6) -> 0.02086702314 | V17: =GROWTH($C17:U17,,V$6) -> 0.021073574 | W17: =GROWTH($C17:V17,,W$6) -> 0.0212821694 | X17: =GROWTH($C17:W17,,X$6) -> 0.02149282957 | Y17: =GROWTH($C17:X17,,Y$6) -> 0.02170557494 | Z17: =GROWTH($C17:Y17,,Z$6) -> 0.02192042616 | AA17: =GROWTH($C17:Z17,,AA$6) -> 0.02213740406 | AB17: =GROWTH($C17:AA17,,AB$6) -> 0.02235652971 | AC17: =GROWTH($C17:AB17,,AC$6) -> 0.02257782437 | AD17: =GROWTH($C17:AC17,,AD$6) -> 0.02280130949 | AE17: =GROWTH($C17:AD17,,AE$6) -> 0.02302700676 | AF17: =GROWTH($C17:AE17,,AF$6) -> 0.02325493809 | AG17: =GROWTH($C17:AF17,,AG$6) -> 0.02348512558 | AH17: -
B18: ISC | C18: =VLOOKUP(C$3,Inflace!$X$4:'Inflace'!$AB$20,4,FALSE) -> 107 | D18: =VLOOKUP(D$3,Inflace!$X$4:'Inflace'!$AB$20,4,FALSE) -> 112 | E18: =VLOOKUP(E$3,Inflace!$X$4:'Inflace'!$AB$20,4,FALSE) -> 111 | F18: =VLOOKUP(F$3,Inflace!$X$4:'Inflace'!$AB$20,4,FALSE) -> 103 | G18: =VLOOKUP(G$3,Inflace!$X$4:'Inflace'!$AB$20,4,FALSE) -> 98 | H18: =VLOOKUP(H$3,Inflace!$X$4:'Inflace'!$AB$20,4,FALSE) -> 98 | I18: =VLOOKUP(I$3,Inflace!$X$4:'Inflace'!$AB$20,4,FALSE) -> 100 | J18: =VLOOKUP(J$3,Inflace!$X$4:'Inflace'!$AB$20,4,FALSE) -> 96 | K18: =VLOOKUP(K$3,Inflace!$X$4:'Inflace'!$AB$20,4,FALSE) -> 94 | L18: =VLOOKUP(L$3,Inflace!$X$4:'Inflace'!$AB$20,4,FALSE) -> 98 | M18: =VLOOKUP(M$3,Inflace!$X$4:'Inflace'!$AB$20,4,FALSE) -> 98 | N18: =VLOOKUP(N$3,Inflace!$X$4:'Inflace'!$AB$20,4,FALSE) -> 95 | O18: =VLOOKUP(O$3,Inflace!$X$4:'Inflace'!$AB$20,4,FALSE) -> 99 | P18: =VLOOKUP(P$3,Inflace!$X$4:'Inflace'!$AB$20,4,FALSE) -> 102 | Q18: =VLOOKUP(Q$3,Inflace!$X$4:'Inflace'!$AB$20,4,FALSE) -> 103 | R18: =VLOOKUP(R$3,Inflace!$X$4:'Inflace'!$AB$20,4,FALSE) -> 113 | S18: =VLOOKUP(S$3,Inflace!$X$4:'Inflace'!$AB$20,4,FALSE) -> 113 | T18: =GROWTH($C18:S18,,T$6) -> 102.0027184 | U18: =GROWTH($C18:T18,,U$6) -> 101.9848839 | V18: =GROWTH($C18:U18,,V$6) -> 101.9670526 | W18: =GROWTH($C18:V18,,W$6) -> 101.9492244 | X18: =GROWTH($C18:W18,,X$6) -> 101.9313994 | Y18: =GROWTH($C18:X18,,Y$6) -> 101.9135774 | Z18: =GROWTH($C18:Y18,,Z$6) -> 101.8957586 | AA18: =GROWTH($C18:Z18,,AA$6) -> 101.8779428 | AB18: =GROWTH($C18:AA18,,AB$6) -> 101.8601302 | AC18: =GROWTH($C18:AB18,,AC$6) -> 101.8423207 | AD18: =GROWTH($C18:AC18,,AD$6) -> 101.8245143 | AE18: =GROWTH($C18:AD18,,AE$6) -> 101.8067111 | AF18: =GROWTH($C18:AE18,,AF$6) -> 101.7889109 | AG18: =GROWTH($C18:AF18,,AG$6) -> 101.7711139 | AH18: -
B19: WK | C19: 1 | D19: 1 | E19: 1 | F19: 1 | G19: 1 | H19: 1 | I19: 1 | J19: 1 | K19: 1 | L19: 1 | M19: 1 | N19: 1 | O19: 1 | P19: 1 | Q19: 1 | R19: 1 | S19: 1 | T19: 1 | U19: 1 | V19: 1 | W19: 1 | X19: 1 | Y19: 1 | Z19: 1 | AA19: 1 | AB19: 1 | AC19: 1 | AD19: 1 | AE19: 1 | AF19: 1 | AG19: 1 | AH19: -
B20: UK
B21: Elektřina | C21: 3.66 | D21: 3.53 | E21: 3.46 | F21: 3.35 | G21: 3.64 | H21: 4.77 | I21: 6.35 | J21: 6.49 | K21: 7.97 | L21: 8.61 | M21: 7.84 | N21: 8.08 | O21: 8.47 | P21: 8.89 | Q21: 9.38 | R21: 9.5 | S21: 9.28 | T21: =GROWTH($C21:S21,,T$6) -> 12.24436356 | U21: =GROWTH($C21:T21,,U$6) -> 13.20772632 | V21: =GROWTH($C21:U21,,V$6) -> 14.2468846 | W21: =GROWTH($C21:V21,,W$6) -> 15.36780183 | X21: =GROWTH($C21:W21,,X$6) -> 16.57691065 | Y21: =GROWTH($C21:X21,,Y$6) -> 17.88114981 | Z21: =GROWTH($C21:Y21,,Z$6) -> 19.28800398 | AA21: =GROWTH($C21:Z21,,AA$6) -> 20.8055467 | AB21: =GROWTH($C21:AA21,,AB$6) -> 22.44248674 | AC21: =GROWTH($C21:AB21,,AC$6) -> 24.20821804 | AD21: =GROWTH($C21:AC21,,AD$6) -> 26.11287366 | AE21: =GROWTH($C21:AD21,,AE$6) -> 28.16738388 | AF21: =GROWTH($C21:AE21,,AF$6) -> 30.38353898 | AG21: =GROWTH($C21:AF21,,AG$6) -> 32.77405686 | AH21: -
B22: Zemní plyn | C22: 2.71 | D22: 3.17 | E22: 2.37 | F22: 3.33 | G22: 4.46 | H22: 7.38 | I22: 7.87 | J22: 6.01 | K22: 10.79 | L22: 4.85 | M22: 6.56 | N22: 9.04 | O22: 9.46 | P22: 10.64 | Q22: 8.25 | R22: 6.53 | S22: 4.69 | T22: =GROWTH($C22:S22,,T$6) -> 10.16200478 | U22: =GROWTH($C22:T22,,U$6) -> 10.82473248 | V22: =GROWTH($C22:U22,,V$6) -> 11.5306808 | W22: =GROWTH($C22:V22,,W$6) -> 12.2826684 | X22: =GROWTH($C22:W22,,X$6) -> 13.08369781 | Y22: =GROWTH($C22:X22,,Y$6) -> 13.93696734 | Z22: =GROWTH($C22:Y22,,Z$6) -> 14.8458839 | AA22: =GROWTH($C22:Z22,,AA$6) -> 15.81407658 | AB22: =GROWTH($C22:AA22,,AB$6) -> 16.84541113 | AC22: =GROWTH($C22:AB22,,AC$6) -> 17.94400545 | AD22: =GROWTH($C22:AC22,,AD$6) -> 19.11424595 | AE22: =GROWTH($C22:AD22,,AE$6) -> 20.36080514 | AF22: =GROWTH($C22:AE22,,AF$6) -> 21.68866022 | AG22: =GROWTH($C22:AF22,,AG$6) -> 23.10311302 | AH22: BP hodnoty UK
B23: Voda | C23: =$T$23*C32/$T$32 -> 3.280314709 | D23: 3.222765328 | E23: 3.3090894 | F23: 3.36663878 | G23: 3.539286923 | H23: 3.625610994 | I23: 3.683160375 | J23: 3.913357899 | K23: 3.481737542 | L23: 3.107666567 | M23: 3.050117186 | N23: 3.107666567 | O23: 3.136441257 | P23: 3.165215947 | Q23: 3.36663878 | R23: 3.424188161 | S23: =$T$23*S32/$T$32 -> 3.050117186 | T23: =1.5373+1.6594 -> 3.1967 | U23: =$T$23*U32/$T$32 -> 3.181721497 | V23: =$T$23*V32/$T$32 -> 3.166813178 | W23: 3.151974714 | X23: 3.137205776 | Y23: 3.122506041 | Z23: 3.107875182 | AA23: 3.093312878 | AB23: 3.078818808 | AC23: 3.064392651 | AD23: 3.05003409 | AE23: =$T$23*AE32/$T$32 -> 3.035742807 | AF23: 3.021518487 | AG23: 3.007360818 | AH23: Vodné i stočné
B24: Mzdové náklady | C24: 37356 | D24: 39248 | E24: 39883 | F24: 40872 | G24: 41874 | H24: 41471 | I24: 42775 | J24: 43959 | K24: 42836 | L24: 43561 | M24: 43447 | N24: 42469 | O24: 42330 | P24: 42058 | Q24: 41878 | R24: 42304 | S24: 42835 | T24: =GROWTH($C24:S24,,T$6) -> 43870.73874 | U24: =GROWTH($C24:T24,,U$6) -> 44107.11324 | V24: =GROWTH($C24:U24,,V$6) -> 44344.76131 | W24: =GROWTH($C24:V24,,W$6) -> 44583.68984 | X24: =GROWTH($C24:W24,,X$6) -> 44823.9057 | Y24: =GROWTH($C24:X24,,Y$6) -> 45065.41584 | Z24: =GROWTH($C24:Y24,,Z$6) -> 45308.22723 | AA24: =GROWTH($C24:Z24,,AA$6) -> 45552.34688 | AB24: =GROWTH($C24:AA24,,AB$6) -> 45797.78185 | AC24: =GROWTH($C24:AB24,,AC$6) -> 46044.53921 | AD24: =GROWTH($C24:AC24,,AD$6) -> 46292.62609 | AE24: =GROWTH($C24:AD24,,AE$6) -> 46542.04966 | AF24: =GROWTH($C24:AE24,,AF$6) -> 46792.81712 | AG24: =GROWTH($C24:AF24,,AG$6) -> 47044.93571 | AH24: Dollars, Average annual wages
B25: Odměny | C25: =C24*$C$163 -> 1887.874306 | D25: 1983.491026 | E25: 2015.582262 | F25: 2065.563729 | G25: 2116.202182 | H25: 2095.835618 | I25: 2161.73636 | J25: 2221.572616 | K25: 2164.81914 | L25: 2201.458739 | M25: 2195.697478 | N25: 2146.271922 | O25: 2139.247226 | P25: 2125.501059 | Q25: 2116.404331 | R25: 2137.933255 | S25: 2164.768602 | T25: 2217.112123 | U25: 2229.05787 | V25: 2241.067981 | W25: 2253.142802 | X25: 2265.282682 | Y25: 2277.487972 | Z25: 2289.759023 | AA25: 2302.09619 | AB25: 2314.49983 | AC25: 2326.9703 | AD25: 2339.507961 | AE25: =AE24*$C$163 -> 2352.113174 | AF25: 2364.786304 | AG25: 2377.527716 | AH25: -
B26: Pozemek | C26: =$R$26*C32/$R$32 -> 239.4957983 | D26: 235.2941176 | E26: 241.5966387 | F26: 245.7983193 | G26: 258.4033613 | H26: 264.7058824 | I26: 268.907563 | J26: 285.7142857 | K26: 254.2016807 | L26: 226.8907563 | M26: 222.6890756 | N26: 226.8907563 | O26: 228.9915966 | P26: 231.092437 | Q26: =$R$26*Q32/$R$32 -> 245.7983193 | R26: 250 | S26: =$R$26*S32/$R$32 -> 222.6890756 | T26: =$R$26*T32/$R$32 -> 233.3910879 | U26: 232.2975073 | V26: 231.2090508 | W26: 230.1256944 | X26: 229.0474142 | Y26: 227.9741864 | Z26: 226.9059873 | AA26: 225.8427934 | AB26: 224.7845813 | AC26: 223.7313275 | AD26: 222.6830088 | AE26: =$R$26*AE32/$R$32 -> 221.6396021 | AF26: 220.6010845 | AG26: 219.5674329 | AH26: -
B27: Výstavba | C27: =$S$27*C32/$S$32 -> 790.4716981 | D27: 776.6037736 | E27: 797.4056604 | F27: 811.2735849 | G27: 852.8773585 | H27: 873.6792453 | I27: 887.5471698 | J27: 943.0188679 | K27: 839.009434 | L27: 748.8679245 | M27: 735 | N27: 748.8679245 | O27: 755.8018868 | P27: 762.7358491 | Q27: 811.2735849 | R27: =$S$27*R32/$S$32 -> 825.1415094 | S27: 735 | T27: =$S$27*T32/$S$32 -> 770.3226981 | U27: =$S$27*U32/$S$32 -> 766.7132632 | V27: 763.1207407 | W27: 759.5450514 | X27: 755.9861164 | Y27: 752.4438571 | Z27: 748.9181956 | AA27: 745.4090539 | AB27: 741.9163547 | AC27: 738.440021 | AD27: 734.979976 | AE27: =$S$27*AE32/$S$32 -> 731.5361434 | AF27: 728.1084473 | AG27: 724.6968121 | AH27: Zdroj Jižní Anglie
B28: Pronájem haly | C28: =$S$28*C32/$S$32 -> 80.92924528 | D28: 79.50943396 | E28: 81.63915094 | F28: 83.05896226 | G28: 87.31839623 | H28: 89.44811321 | I28: 90.86792453 | J28: 96.54716981 | K28: 85.89858491 | L28: 76.66981132 | M28: 75.25 | N28: 76.66981132 | O28: 77.37971698 | P28: 78.08962264 | Q28: 83.05896226 | R28: =$S$28*R32/$S$32 -> 84.47877358 | S28: 75.25 | T28: =$S$28*T32/$S$32 -> 78.86637147 | U28: =$S$28*U32/$S$32 -> 78.49683409 | V28: 78.12902821 | W28: 77.76294574 | X28: 77.39857858 | Y28: 77.03591871 | Z28: 76.67495812 | AA28: 76.31568885 | AB28: 75.95810298 | AC28: 75.60219262 | AD28: 75.24794992 | AE28: =$S$28*AE32/$S$32 -> 74.89536706 | AF28: 74.54443627 | AG28: 74.19514981 | AH28: Roční náklady Barking Londýn
B29: Inflace | C29: =AVERAGEIF(Inflace!$B$4:'Inflace'!$D$216,C5,Inflace!$D$4:'Inflace'!$D$216)/100 -> 0.008 | D29: =AVERAGEIF(Inflace!$B$4:'Inflace'!$D$216,D5,Inflace!$D$4:'Inflace'!$D$216)/100 -> 0.01233333333 | E29: =AVERAGEIF(Inflace!$B$4:'Inflace'!$D$216,E5,Inflace!$D$4:'Inflace'!$D$216)/100 -> 0.01258333333 | F29: =AVERAGEIF(Inflace!$B$4:'Inflace'!$D$216,F5,Inflace!$D$4:'Inflace'!$D$216)/100 -> 0.01358333333 | G29: =AVERAGEIF(Inflace!$B$4:'Inflace'!$D$216,G5,Inflace!$D$4:'Inflace'!$D$216)/100 -> 0.0135 | H29: =AVERAGEIF(Inflace!$B$4:'Inflace'!$D$216,H5,Inflace!$D$4:'Inflace'!$D$216)/100 -> 0.02041666667 | I29: =AVERAGEIF(Inflace!$B$4:'Inflace'!$D$216,I5,Inflace!$D$4:'Inflace'!$D$216)/100 -> 0.02316666667 | J29: =AVERAGEIF(Inflace!$B$4:'Inflace'!$D$216,J5,Inflace!$D$4:'Inflace'!$D$216)/100 -> 0.02341666667 | K29: =AVERAGEIF(Inflace!$B$4:'Inflace'!$D$216,K5,Inflace!$D$4:'Inflace'!$D$216)/100 -> 0.03608333333 | L29: =AVERAGEIF(Inflace!$B$4:'Inflace'!$D$216,L5,Inflace!$D$4:'Inflace'!$D$216)/100 -> 0.02183333333 | M29: =AVERAGEIF(Inflace!$B$4:'Inflace'!$D$216,M5,Inflace!$D$4:'Inflace'!$D$216)/100 -> 0.03308333333 | N29: =AVERAGEIF(Inflace!$B$4:'Inflace'!$D$216,N5,Inflace!$D$4:'Inflace'!$D$216)/100 -> 0.04475 | O29: =AVERAGEIF(Inflace!$B$4:'Inflace'!$D$216,O5,Inflace!$D$4:'Inflace'!$D$216)/100 -> 0.02841666667 | P29: =AVERAGEIF(Inflace!$B$4:'Inflace'!$D$216,P5,Inflace!$D$4:'Inflace'!$D$216)/100 -> 0.02566666667 | Q29: =AVERAGEIF(Inflace!$B$4:'Inflace'!$D$216,Q5,Inflace!$D$4:'Inflace'!$D$216)/100 -> 0.01458333333 | R29: =AVERAGEIF(Inflace!$B$4:'Inflace'!$D$216,R5,Inflace!$D$4:'Inflace'!$D$216)/100 -> 0.0006666666667 | S29: =AVERAGEIF(Inflace!$B$4:'Inflace'!$D$216,S5,Inflace!$D$4:'Inflace'!$D$216)/100 -> 0.00675 | T29: =AVERAGEIF(Inflace!$B$4:'Inflace'!$D$216,T5,Inflace!$D$4:'Inflace'!$D$216)/100 -> 0.02566666667 | U29: =GROWTH($C29:T29,,U$6) -> 0.01364658776 | V29: =GROWTH($C29:U29,,V$6) -> 0.01344097451 | W29: =GROWTH($C29:V29,,W$6) -> 0.01323845924 | X29: =GROWTH($C29:W29,,X$6) -> 0.01303899527 | Y29: =GROWTH($C29:X29,,Y$6) -> 0.01284253663 | Z29: =GROWTH($C29:Y29,,Z$6) -> 0.01264903803 | AA29: =GROWTH($C29:Z29,,AA$6) -> 0.01245845488 | AB29: =GROWTH($C29:AA29,,AB$6) -> 0.01227074324 | AC29: =GROWTH($C29:AB29,,AC$6) -> 0.01208585985 | AD29: =GROWTH($C29:AC29,,AD$6) -> 0.01190376211 | AE29: =GROWTH($C29:AD29,,AE$6) -> 0.01172440803 | AF29: =GROWTH($C29:AE29,,AF$6) -> 0.01154775628 | AG29: =GROWTH($C29:AF29,,AG$6) -> 0.01137376615 | AH29: -
B30: Odvody zaměstnavatele | C30: - | D30: - | E30: - | F30: - | G30: - | H30: - | I30: - | J30: - | K30: - | L30: 0.128 | M30: 0.128 | N30: 0.138 | O30: 0.138 | P30: 0.138 | Q30: 0.138 | R30: 0.138 | S30: 0.138 | T30: 0.138 | U30: =GROWTH($L30:T30,,U$6-10) -> 0.1405610104 | V30: =GROWTH($L30:U30,,V$6-10) -> 0.1413707634 | W30: =GROWTH($L30:V30,,W$6-10) -> 0.1421728065 | X30: =GROWTH($L30:W30,,X$6-10) -> 0.1429690301 | Y30: =GROWTH($L30:X30,,Y$6-10) -> 0.1437608899 | Z30: =GROWTH($L30:Y30,,Z$6-10) -> 0.1445495314 | AA30: =GROWTH($L30:Z30,,AA$6-10) -> 0.1453358732 | AB30: =GROWTH($L30:AA30,,AB$6-10) -> 0.1461206637 | AC30: =GROWTH($L30:AB30,,AC$6-10) -> 0.146904521 | AD30: =GROWTH($L30:AC30,,AD$6-10) -> 0.1476879625 | AE30: =GROWTH($L30:AD30,,AE$6-10) -> 0.1484714258 | AF30: =GROWTH($L30:AE30,,AF$6-10) -> 0.1492552847 | AG30: =GROWTH($L30:AF30,,AG$6-10) -> 0.1500398619 | AH30: -
B31: Clo a poplatky | C31: - | D31: - | E31: - | F31: - | G31: - | H31: - | I31: - | J31: - | K31: - | L31: - | M31: - | N31: - | O31: - | P31: - | Q31: - | R31: 0.053 | S31: 0.053 | T31: 0.053 | U31: =GROWTH($S31:T31,,U$6-16) -> 0.053 | V31: =GROWTH($S31:U31,,V$6-16) -> 0.053 | W31: =GROWTH($S31:V31,,W$6-16) -> 0.053 | X31: =GROWTH($S31:W31,,X$6-16) -> 0.053 | Y31: =GROWTH($S31:X31,,Y$6-16) -> 0.053 | Z31: =GROWTH($S31:Y31,,Z$6-16) -> 0.053 | AA31: =GROWTH($S31:Z31,,AA$6-16) -> 0.053 | AB31: =GROWTH($S31:AA31,,AB$6-16) -> 0.053 | AC31: =GROWTH($S31:AB31,,AC$6-16) -> 0.053 | AD31: =GROWTH($S31:AC31,,AD$6-16) -> 0.053 | AE31: =GROWTH($S31:AD31,,AE$6-16) -> 0.053 | AF31: =GROWTH($S31:AE31,,AF$6-16) -> 0.053 | AG31: =GROWTH($S31:AF31,,AG$6-16) -> 0.053 | AH31: -
B32: ISC | C32: =VLOOKUP(C$3,Inflace!$X$4:'Inflace'!$AB$20,3,FALSE) -> 114 | D32: =VLOOKUP(D$3,Inflace!$X$4:'Inflace'!$AB$20,3,FALSE) -> 112 | E32: =VLOOKUP(E$3,Inflace!$X$4:'Inflace'!$AB$20,3,FALSE) -> 115 | F32: =VLOOKUP(F$3,Inflace!$X$4:'Inflace'!$AB$20,3,FALSE) -> 117 | G32: =VLOOKUP(G$3,Inflace!$X$4:'Inflace'!$AB$20,3,FALSE) -> 123 | H32: =VLOOKUP(H$3,Inflace!$X$4:'Inflace'!$AB$20,3,FALSE) -> 126 | I32: =VLOOKUP(I$3,Inflace!$X$4:'Inflace'!$AB$20,3,FALSE) -> 128 | J32: =VLOOKUP(J$3,Inflace!$X$4:'Inflace'!$AB$20,3,FALSE) -> 136 | K32: =VLOOKUP(K$3,Inflace!$X$4:'Inflace'!$AB$20,3,FALSE) -> 121 | L32: =VLOOKUP(L$3,Inflace!$X$4:'Inflace'!$AB$20,3,FALSE) -> 108 | M32: =VLOOKUP(M$3,Inflace!$X$4:'Inflace'!$AB$20,3,FALSE) -> 106 | N32: =VLOOKUP(N$3,Inflace!$X$4:'Inflace'!$AB$20,3,FALSE) -> 108 | O32: =VLOOKUP(O$3,Inflace!$X$4:'Inflace'!$AB$20,3,FALSE) -> 109 | P32: =VLOOKUP(P$3,Inflace!$X$4:'Inflace'!$AB$20,3,FALSE) -> 110 | Q32: =VLOOKUP(Q$3,Inflace!$X$4:'Inflace'!$AB$20,3,FALSE) -> 117 | R32: =VLOOKUP(R$3,Inflace!$X$4:'Inflace'!$AB$20,3,FALSE) -> 119 | S32: =VLOOKUP(S$3,Inflace!$X$4:'Inflace'!$AB$20,3,FALSE) -> 106 | T32: =GROWTH($C32:S32,,T$6) -> 111.0941578 | U32: =GROWTH($C32:T32,,U$6) -> 110.5736135 | V32: =GROWTH($C32:U32,,V$6) -> 110.0555082 | W32: =GROWTH($C32:V32,,W$6) -> 109.5398305 | X32: =GROWTH($C32:W32,,X$6) -> 109.0265692 | Y32: =GROWTH($C32:X32,,Y$6) -> 108.5157127 | Z32: =GROWTH($C32:Y32,,Z$6) -> 108.00725 | AA32: =GROWTH($C32:Z32,,AA$6) -> 107.5011697 | AB32: =GROWTH($C32:AA32,,AB$6) -> 106.9974607 | AC32: =GROWTH($C32:AB32,,AC$6) -> 106.4961119 | AD32: =GROWTH($C32:AC32,,AD$6) -> 105.9971122 | AE32: =GROWTH($C32:AD32,,AE$6) -> 105.5004506 | AF32: =GROWTH($C32:AE32,,AF$6) -> 105.0061162 | AG32: =GROWTH($C32:AF32,,AG$6) -> 104.5140981 | AH32: -
B33: WK | C33: =VLOOKUP(C$3,Inflace!$R$4:'Inflace'!$V$20,3,FALSE) -> 0.660931 | D33: =VLOOKUP(D$3,Inflace!$R$4:'Inflace'!$V$20,3,FALSE) -> 0.694655 | E33: =VLOOKUP(E$3,Inflace!$R$4:'Inflace'!$V$20,3,FALSE) -> 0.667223 | F33: =VLOOKUP(F$3,Inflace!$R$4:'Inflace'!$V$20,3,FALSE) -> 0.612472 | G33: =VLOOKUP(G$3,Inflace!$R$4:'Inflace'!$V$20,3,FALSE) -> 0.54618 | H33: =VLOOKUP(H$3,Inflace!$R$4:'Inflace'!$V$20,3,FALSE) -> 0.549998 | I33: =VLOOKUP(I$3,Inflace!$R$4:'Inflace'!$V$20,3,FALSE) -> 0.543487 | J33: =VLOOKUP(J$3,Inflace!$R$4:'Inflace'!$V$20,3,FALSE) -> 0.499772 | K33: =VLOOKUP(K$3,Inflace!$R$4:'Inflace'!$V$20,3,FALSE) -> 0.543966 | L33: =VLOOKUP(L$3,Inflace!$R$4:'Inflace'!$V$20,3,FALSE) -> 0.641919 | M33: =VLOOKUP(M$3,Inflace!$R$4:'Inflace'!$V$20,3,FALSE) -> 0.647179 | N33: =VLOOKUP(N$3,Inflace!$R$4:'Inflace'!$V$20,3,FALSE) -> 0.624141 | O33: =VLOOKUP(O$3,Inflace!$R$4:'Inflace'!$V$20,3,FALSE) -> 0.633047 | P33: =VLOOKUP(P$3,Inflace!$R$4:'Inflace'!$V$20,3,FALSE) -> 0.639661 | Q33: =VLOOKUP(Q$3,Inflace!$R$4:'Inflace'!$V$20,3,FALSE) -> 0.60773 | R33: =VLOOKUP(R$3,Inflace!$R$4:'Inflace'!$V$20,3,FALSE) -> 0.654545 | S33: =VLOOKUP(S$3,Inflace!$R$4:'Inflace'!$V$20,3,FALSE) -> 0.740634 | T33: =Premise!L10/Premise!L7 -> 0.740634 | U33: =GROWTH($C33:T33,,U$6) -> 0.662933633 | V33: =GROWTH($C33:U33,,V$6) -> 0.6674652156 | W33: =GROWTH($C33:V33,,W$6) -> 0.6720277746 | X33: =GROWTH($C33:W33,,X$6) -> 0.6766215216 | Y33: =GROWTH($C33:X33,,Y$6) -> 0.6812466699 | Z33: =GROWTH($C33:Y33,,Z$6) -> 0.6859034341 | AA33: =GROWTH($C33:Z33,,AA$6) -> 0.6905920303 | AB33: =GROWTH($C33:AA33,,AB$6) -> 0.6953126761 | AC33: =GROWTH($C33:AB33,,AC$6) -> 0.7000655906 | AD33: =GROWTH($C33:AC33,,AD$6) -> 0.7048509943 | AE33: =GROWTH($C33:AD33,,AE$6) -> 0.7096691094 | AF33: =GROWTH($C33:AE33,,AF$6) -> 0.7145201595 | AG33: =GROWTH($C33:AF33,,AG$6) -> 0.7194043696 | AH33: -
B34: ČR
B35: Elektřina | C35: 2.84 | D35: 2.96 | E35: 3.28 | F35: 3.44 | G35: 3.61 | H35: 4.43 | I35: 5.1 | J35: 5.76 | K35: 8.25 | L35: 9.47 | M35: 9.32 | N35: 9.97 | O35: 9.14 | P35: 9.53 | Q35: 7.46 | R35: 6.39 | S35: 6.58 | T35: =GROWTH($C35:S35,,T$6) -> 11.18972353 | U35: =GROWTH($C35:T35,,U$6) -> 12.04309388 | V35: =GROWTH($C35:U35,,V$6) -> 12.96154545 | W35: =GROWTH($C35:V35,,W$6) -> 13.9500416 | X35: =GROWTH($C35:W35,,X$6) -> 15.01392417 | Y35: =GROWTH($C35:X35,,Y$6) -> 16.15894242 | Z35: =GROWTH($C35:Y35,,Z$6) -> 17.39128407 | AA35: =GROWTH($C35:Z35,,AA$6) -> 18.71760872 | AB35: =GROWTH($C35:AA35,,AB$6) -> 20.14508386 | AC35: =GROWTH($C35:AB35,,AC$6) -> 21.68142363 | AD35: =GROWTH($C35:AC35,,AD$6) -> 23.33493044 | AE35: =GROWTH($C35:AD35,,AE$6) -> 25.11453988 | AF35: =GROWTH($C35:AE35,,AF$6) -> 27.02986903 | AG35: =GROWTH($C35:AF35,,AG$6) -> 29.09126837 | AH35: -
B36: Zemní plyn | C36: 2.91 | D36: 3.67 | E36: 3.21 | F36: 4.06 | G36: 4.3 | H36: 5.83 | I36: 7.87 | J36: 7.99 | K36: 11.6 | L36: 8.53 | M36: 8.03 | N36: 10.49 | O36: 10.93 | P36: 10.73 | Q36: 9.11 | R36: 6.72 | S36: 4.93 | T36: =GROWTH($C36:S36,,T$6) -> 11.31197951 | U36: =GROWTH($C36:T36,,U$6) -> 12.03177829 | V36: =GROWTH($C36:U36,,V$6) -> 12.79737897 | W36: =GROWTH($C36:V36,,W$6) -> 13.61169601 | X36: =GROWTH($C36:W36,,X$6) -> 14.47782931 | Y36: =GROWTH($C36:X36,,Y$6) -> 15.39907601 | Z36: =GROWTH($C36:Y36,,Z$6) -> 16.37894307 | AA36: =GROWTH($C36:Z36,,AA$6) -> 17.42116058 | AB36: =GROWTH($C36:AA36,,AB$6) -> 18.52969601 | AC36: =GROWTH($C36:AB36,,AC$6) -> 19.70876926 | AD36: =GROWTH($C36:AC36,,AD$6) -> 20.96286877 | AE36: =GROWTH($C36:AD36,,AE$6) -> 22.29676858 | AF36: =GROWTH($C36:AE36,,AF$6) -> 23.71554649 | AG36: =GROWTH($C36:AF36,,AG$6) -> 25.22460344 | AH36: BP hodnoty Německo
B37: Voda | C37: =$S$37*C44/$S$44 -> 56.78666667 | D37: 59.626 | E37: 69.56366667 | F37: 73.82266667 | G37: 78.08166667 | H37: 83.76033333 | I37: 90.85866667 | J37: 96.53733333 | K37: 109.3143333 | L37: 99.37666667 | M37: 99.37666667 | N37: 102.216 | O37: 95.11766667 | P37: 93.698 | Q37: 89.439 | R37: =$S$37*R44/$S$44 -> 83.76033333 | S37: 85.18 | T37: 87.71 | U37: =$T$37*U44/$T$44 -> 89.86820292 | V37: =$T$37*V44/$T$44 -> 92.07951084 | W37: 94.34523047 | X37: 96.66670067 | Y37: 99.04529325 | Z37: 101.4824138 | AA37: 103.9795024 | AB37: 106.5380346 | AC37: 109.1595225 | AD37: 111.8455149 | AE37: =$T$37*AE44/$T$44 -> 114.5975993 | AF37: 117.4174017 | AG37: 120.3065886 | AH37: Vodné i stočné
B38: Mzdové náklady | C38: 15569 | D38: 16349 | E38: 17335 | F38: 18659 | G38: 19592 | H38: 20105 | I38: 20939 | J38: 21584 | K38: 21535 | L38: 21496 | M38: 21996 | N38: 22314 | O38: 22266 | P38: 22028 | Q38: 22495 | R38: 23003 | S38: 23772 | T38: =GROWTH($C38:S38,,T$6) -> 25061.52505 | U38: =GROWTH($C38:T38,,U$6) -> 25626.03721 | V38: =GROWTH($C38:U38,,V$6) -> 26203.26503 | W38: =GROWTH($C38:V38,,W$6) -> 26793.49494 | X38: =GROWTH($C38:W38,,X$6) -> 27397.01981 | Y38: =GROWTH($C38:X38,,Y$6) -> 28014.13911 | Z38: =GROWTH($C38:Y38,,Z$6) -> 28645.15905 | AA38: =GROWTH($C38:Z38,,AA$6) -> 29290.39275 | AB38: =GROWTH($C38:AA38,,AB$6) -> 29950.16037 | AC38: =GROWTH($C38:AB38,,AC$6) -> 30624.78929 | AD38: =GROWTH($C38:AC38,,AD$6) -> 31314.61426 | AE38: =GROWTH($C38:AD38,,AE$6) -> 32019.97758 | AF38: =GROWTH($C38:AE38,,AF$6) -> 32741.22924 | AG38: =GROWTH($C38:AF38,,AG$6) -> 33478.72714 | AH38: Dollars, Average annual wages
B39: Odměny | C39: =C38*$C$163 -> 786.8164438 | D39: 826.235599 | E39: 876.065454 | F39: 942.976943 | G39: 990.128317 | H39: 1016.053992 | I39: 1058.202166 | J39: 1090.798775 | K39: 1088.322443 | L39: 1086.351485 | M39: 1111.620175 | N39: 1127.691061 | O39: 1125.265267 | P39: 1113.237371 | Q39: 1136.838326 | R39: 1162.511315 | S39: 1201.374559 | T39: 1266.543774 | U39: 1295.072739 | V39: 1324.244319 | W39: 1354.072992 | X39: 1384.573556 | Y39: 1415.761148 | Z39: 1447.651241 | AA39: 1480.259661 | AB39: 1513.602587 | AC39: 1547.696564 | AD39: 1582.55851 | AE39: =AE38*$C$163 -> 1618.205722 | AF39: 1654.655891 | AG39: 1691.927101 | AH39: -
B40: Pozemek | C40: =$T$40*C44/$T$44 -> 1253.50232 | D40: 1316.177436 | E40: 1535.540341 | F40: 1629.553015 | G40: 1723.565689 | H40: 1848.915921 | I40: 2005.603711 | J40: 2130.953943 | K40: 2412.991965 | L40: 2193.629059 | M40: 2193.629059 | N40: 2256.304175 | O40: 2099.616385 | P40: 2068.278827 | Q40: 1974.266153 | R40: 1848.915921 | S40: =$T$40*S44/$T$44 -> 1880.253479 | T40: 2334 | U40: =$T$40*U44/$T$44 -> 2391.430688 | V40: =$T$40*V44/$T$44 -> 2450.274522 | W40: 2510.566274 | X40: 2572.341573 | Y40: 2635.636922 | Z40: 2700.489725 | AA40: 2766.938303 | AB40: 2835.021923 | AC40: 2904.780817 | AD40: 2976.256206 | AE40: =$T$40*AE44/$T$44 -> 3049.490328 | AF40: 3124.526458 | AG40: 3201.408935 | AH40: -
B41: Výstavba | C41: =$T$41*C44/$T$44 -> 9667.113005 | D41: 10150.46865 | E41: 11842.21343 | F41: 12567.24691 | G41: 13292.28038 | H41: 14258.99168 | I41: 15467.38081 | J41: 16434.09211 | K41: 18609.19253 | L41: 16917.44776 | M41: 16917.44776 | N41: 17400.80341 | O41: 16192.41428 | P41: 15950.73646 | Q41: 15225.70298 | R41: 14258.99168 | S41: =$T$41*S44/$T$44 -> 14500.66951 | T41: 18000 | U41: =$T$41*U44/$T$44 -> 18442.91019 | V41: =$T$41*V44/$T$44 -> 18896.71868 | W41: 19361.69363 | X41: 19838.10982 | Y41: 20326.24876 | Z41: 20826.3989 | AA41: 21338.85581 | AB41: 21863.92228 | AC41: 22401.90861 | AD41: 22953.1327 | AE41: =$T$41*AE44/$T$44 -> 23517.92027 | AF41: 24096.60507 | AG41: 24689.52906 | AH41: Výstavba ŠA
B42: Pronájem haly | C42: =$T$42*C44/$T$44 -> 2.685309168 | D42: 2.819574626 | E42: 3.289503731 | F42: 3.490901918 | G42: 3.692300106 | H42: 3.960831023 | I42: 4.296494669 | J42: 4.565025585 | K42: 5.169220148 | L42: 4.699291044 | M42: 4.699291044 | N42: 4.833556502 | O42: 4.497892856 | P42: 4.430760127 | Q42: 4.229361939 | R42: 3.960831023 | S42: =$T$42*S44/$T$44 -> 4.027963752 | T42: 5 | U42: =$T$42*U44/$T$44 -> 5.123030607 | V42: =$T$42*V44/$T$44 -> 5.249088521 | W42: 5.378248231 | X42: 5.51058606 | Y42: 5.64618021 | Z42: 5.785110807 | AA42: 5.927459946 | AB42: 6.073311746 | AC42: 6.222752392 | AD42: 6.375870194 | AE42: =$T$42*AE44/$T$44 -> 6.53275563 | AF42: 6.693501409 | AG42: 6.858202518 | AH42: Měsíční náklady
B43: Inflace | C43: =AVERAGEIF(Inflace!$N$4:'Inflace'!$P$216,C5,Inflace!$P$4:'Inflace'!$P$216)/100 -> 0.03774208333 | D43: =AVERAGEIF(Inflace!$N$4:'Inflace'!$P$216,D5,Inflace!$P$4:'Inflace'!$P$216)/100 -> 0.04661566667 | E43: =AVERAGEIF(Inflace!$N$4:'Inflace'!$P$216,E5,Inflace!$P$4:'Inflace'!$P$216)/100 -> 0.01917833333 | F43: =AVERAGEIF(Inflace!$N$4:'Inflace'!$P$216,F5,Inflace!$P$4:'Inflace'!$P$216)/100 -> 0.001207083333 | G43: =AVERAGEIF(Inflace!$N$4:'Inflace'!$P$216,G5,Inflace!$P$4:'Inflace'!$P$216)/100 -> 0.02760141667 | H43: =AVERAGEIF(Inflace!$N$4:'Inflace'!$P$216,H5,Inflace!$P$4:'Inflace'!$P$216)/100 -> 0.01856741667 | I43: =AVERAGEIF(Inflace!$N$4:'Inflace'!$P$216,I5,Inflace!$P$4:'Inflace'!$P$216)/100 -> 0.025367 | J43: =AVERAGEIF(Inflace!$N$4:'Inflace'!$P$216,J5,Inflace!$P$4:'Inflace'!$P$216)/100 -> 0.02853508333 | K43: =AVERAGEIF(Inflace!$N$4:'Inflace'!$P$216,K5,Inflace!$P$4:'Inflace'!$P$216)/100 -> 0.06372225 | L43: =AVERAGEIF(Inflace!$N$4:'Inflace'!$P$216,L5,Inflace!$P$4:'Inflace'!$P$216)/100 -> 0.0102365 | M43: =AVERAGEIF(Inflace!$N$4:'Inflace'!$P$216,M5,Inflace!$P$4:'Inflace'!$P$216)/100 -> 0.01474391667 | N43: =AVERAGEIF(Inflace!$N$4:'Inflace'!$P$216,N5,Inflace!$P$4:'Inflace'!$P$216)/100 -> 0.01917033333 | O43: =AVERAGEIF(Inflace!$N$4:'Inflace'!$P$216,O5,Inflace!$P$4:'Inflace'!$P$216)/100 -> 0.03289141667 | P43: =AVERAGEIF(Inflace!$N$4:'Inflace'!$P$216,P5,Inflace!$P$4:'Inflace'!$P$216)/100 -> 0.014387 | Q43: =AVERAGEIF(Inflace!$N$4:'Inflace'!$P$216,Q5,Inflace!$P$4:'Inflace'!$P$216)/100 -> 0.003443916667 | R43: =AVERAGEIF(Inflace!$N$4:'Inflace'!$P$216,R5,Inflace!$P$4:'Inflace'!$P$216)/100 -> 0.003092083333 | S43: =AVERAGEIF(Inflace!$N$4:'Inflace'!$P$216,S5,Inflace!$P$4:'Inflace'!$P$216)/100 -> 0.006847333333 | T43: =AVERAGEIF(Inflace!$N$4:'Inflace'!$P$216,T5,Inflace!$P$4:'Inflace'!$P$216)/100 -> 0.02399411111 | U43: =GROWTH($C43:T43,,U$6) -> 0.008902710476 | V43: =GROWTH($C43:U43,,V$6) -> 0.008405096269 | W43: =GROWTH($C43:V43,,W$6) -> 0.007935296052 | X43: =GROWTH($C43:W43,,X$6) -> 0.00749175517 | Y43: =GROWTH($C43:X43,,Y$6) -> 0.007073005867 | Z43: =GROWTH($C43:Y43,,Z$6) -> 0.006677662424 | AA43: =GROWTH($C43:Z43,,AA$6) -> 0.006304416579 | AB43: =GROWTH($C43:AA43,,AB$6) -> 0.005952033194 | AC43: =GROWTH($C43:AB43,,AC$6) -> 0.005619346167 | AD43: =GROWTH($C43:AC43,,AD$6) -> 0.005305254577 | AE43: =GROWTH($C43:AD43,,AE$6) -> 0.005008719038 | AF43: =GROWTH($C43:AE43,,AF$6) -> 0.00472875826 | AG43: =GROWTH($C43:AF43,,AG$6) -> 0.004464445801 | AH43: -
B44: ISC | C44: =VLOOKUP(C$3,Inflace!$X$4:'Inflace'!$AB$20,2,FALSE) -> 40 | D44: =VLOOKUP(D$3,Inflace!$X$4:'Inflace'!$AB$20,2,FALSE) -> 42 | E44: =VLOOKUP(E$3,Inflace!$X$4:'Inflace'!$AB$20,2,FALSE) -> 49 | F44: =VLOOKUP(F$3,Inflace!$X$4:'Inflace'!$AB$20,2,FALSE) -> 52 | G44: =VLOOKUP(G$3,Inflace!$X$4:'Inflace'!$AB$20,2,FALSE) -> 55 | H44: =VLOOKUP(H$3,Inflace!$X$4:'Inflace'!$AB$20,2,FALSE) -> 59 | I44: =VLOOKUP(I$3,Inflace!$X$4:'Inflace'!$AB$20,2,FALSE) -> 64 | J44: =VLOOKUP(J$3,Inflace!$X$4:'Inflace'!$AB$20,2,FALSE) -> 68 | K44: =VLOOKUP(K$3,Inflace!$X$4:'Inflace'!$AB$20,2,FALSE) -> 77 | L44: =VLOOKUP(L$3,Inflace!$X$4:'Inflace'!$AB$20,2,FALSE) -> 70 | M44: =VLOOKUP(M$3,Inflace!$X$4:'Inflace'!$AB$20,2,FALSE) -> 70 | N44: =VLOOKUP(N$3,Inflace!$X$4:'Inflace'!$AB$20,2,FALSE) -> 72 | O44: =VLOOKUP(O$3,Inflace!$X$4:'Inflace'!$AB$20,2,FALSE) -> 67 | P44: =VLOOKUP(P$3,Inflace!$X$4:'Inflace'!$AB$20,2,FALSE) -> 66 | Q44: =VLOOKUP(Q$3,Inflace!$X$4:'Inflace'!$AB$20,2,FALSE) -> 63 | R44: =VLOOKUP(R$3,Inflace!$X$4:'Inflace'!$AB$20,2,FALSE) -> 59 | S44: =VLOOKUP(S$3,Inflace!$X$4:'Inflace'!$AB$20,2,FALSE) -> 60 | T44: =GROWTH($C44:S44,,T$6) -> 74.4793197 | U44: =GROWTH($C44:T44,,U$6) -> 76.31196689 | V44: =GROWTH($C44:U44,,V$6) -> 78.18970841 | W44: =GROWTH($C44:V44,,W$6) -> 80.11365388 | X44: =GROWTH($C44:W44,,X$6) -> 82.08494018 | Y44: =GROWTH($C44:X44,,Y$6) -> 84.10473219 | Z44: =GROWTH($C44:Y44,,Z$6) -> 86.17422345 | AA44: =GROWTH($C44:Z44,,AA$6) -> 88.29463686 | AB44: =GROWTH($C44:AA44,,AB$6) -> 90.46722542 | AC44: =GROWTH($C44:AB44,,AC$6) -> 92.69327296 | AD44: =GROWTH($C44:AC44,,AD$6) -> 94.9740949 | AE44: =GROWTH($C44:AD44,,AE$6) -> 97.31103902 | AF44: =GROWTH($C44:AE44,,AF$6) -> 99.70548627 | AG44: =GROWTH($C44:AF44,,AG$6) -> 102.1588516 | AH44: -
B45: Odvody zaměstnavatele | C45: - | D45: - | E45: - | F45: - | G45: - | H45: - | I45: - | J45: - | K45: - | L45: 0.35 | M45: 0.34 | N45: 0.34 | O45: 0.34 | P45: 0.34 | Q45: 0.34 | R45: 0.34 | S45: 0.34 | T45: 0.34 | U45: =GROWTH($L45:T45,,U$6-10) -> 0.3384703327 | V45: =GROWTH($L45:U45,,V$6-10) -> 0.3380424687 | W45: =GROWTH($L45:V45,,W$6-10) -> 0.337621616 | X45: =GROWTH($L45:W45,,X$6-10) -> 0.3372066728 | Y45: =GROWTH($L45:X45,,Y$6-10) -> 0.336796791 | Z45: =GROWTH($L45:Y45,,Z$6-10) -> 0.336391304 | AA45: =GROWTH($L45:Z45,,AA$6-10) -> 0.3359896782 | AB45: =GROWTH($L45:AA45,,AB$6-10) -> 0.3355914797 | AC45: =GROWTH($L45:AB45,,AC$6-10) -> 0.3351963511 | AD45: =GROWTH($L45:AC45,,AD$6-10) -> 0.3348039944 | AE45: =GROWTH($L45:AD45,,AE$6-10) -> 0.3344141584 | AF45: =GROWTH($L45:AE45,,AF$6-10) -> 0.3340266294 | AG45: =GROWTH($L45:AF45,,AG$6-10) -> 0.3336412242 | AH45: -
B46: WK Kč | C46: =VLOOKUP(C$3,Inflace!$R$4:'Inflace'!$V$20,2,FALSE) -> 38.598417 | D46: =VLOOKUP(D$3,Inflace!$R$4:'Inflace'!$V$20,2,FALSE) -> 38.035328 | E46: =VLOOKUP(E$3,Inflace!$R$4:'Inflace'!$V$20,2,FALSE) -> 32.738518 | F46: =VLOOKUP(F$3,Inflace!$R$4:'Inflace'!$V$20,2,FALSE) -> 28.209 | G46: =VLOOKUP(G$3,Inflace!$R$4:'Inflace'!$V$20,2,FALSE) -> 25.69975 | H46: =VLOOKUP(H$3,Inflace!$R$4:'Inflace'!$V$20,2,FALSE) -> 23.957417 | I46: =VLOOKUP(I$3,Inflace!$R$4:'Inflace'!$V$20,2,FALSE) -> 22.595583 | J46: =VLOOKUP(J$3,Inflace!$R$4:'Inflace'!$V$20,2,FALSE) -> 20.293667 | K46: =VLOOKUP(K$3,Inflace!$R$4:'Inflace'!$V$20,2,FALSE) -> 17.071667 | L46: =VLOOKUP(L$3,Inflace!$R$4:'Inflace'!$V$20,2,FALSE) -> 19.063 | M46: =VLOOKUP(M$3,Inflace!$R$4:'Inflace'!$V$20,2,FALSE) -> 19.09825 | N46: =VLOOKUP(N$3,Inflace!$R$4:'Inflace'!$V$20,2,FALSE) -> 17.695917 | O46: =VLOOKUP(O$3,Inflace!$R$4:'Inflace'!$V$20,2,FALSE) -> 19.5775 | P46: =VLOOKUP(P$3,Inflace!$R$4:'Inflace'!$V$20,2,FALSE) -> 19.570583 | Q46: =VLOOKUP(Q$3,Inflace!$R$4:'Inflace'!$V$20,2,FALSE) -> 20.7575 | R46: =VLOOKUP(R$3,Inflace!$R$4:'Inflace'!$V$20,2,FALSE) -> 24.59875 | S46: =VLOOKUP(S$3,Inflace!$R$4:'Inflace'!$V$20,2,FALSE) -> 24.439917 | T46: =Premise!L10 -> 24.439917 | U46: =GROWTH($C46:T46,,U$6) -> 18.1255935 | V46: =GROWTH($C46:U46,,V$6) -> 17.63383399 | W46: =GROWTH($C46:V46,,W$6) -> 17.15541624 | X46: =GROWTH($C46:W46,,X$6) -> 16.68997829 | Y46: =GROWTH($C46:X46,,Y$6) -> 16.23716799 | Z46: =GROWTH($C46:Y46,,Z$6) -> 15.79664273 | AA46: =GROWTH($C46:Z46,,AA$6) -> 15.36806921 | AB46: =GROWTH($C46:AA46,,AB$6) -> 14.95112318 | AC46: =GROWTH($C46:AB46,,AC$6) -> 14.54548918 | AD46: =GROWTH($C46:AC46,,AD$6) -> 14.1508603 | AE46: =GROWTH($C46:AD46,,AE$6) -> 13.76693797 | AF46: =GROWTH($C46:AE46,,AF$6) -> 13.39343171 | AG46: =GROWTH($C46:AF46,,AG$6) -> 13.03005892 | AH46: -
B47: WK Euro | C47: =VLOOKUP(C$3,Inflace!$R$4:'Inflace'!$V$20,5,FALSE) -> 1.085401 | D47: =VLOOKUP(D$3,Inflace!$R$4:'Inflace'!$V$20,5,FALSE) -> 1.11751 | E47: =VLOOKUP(E$3,Inflace!$R$4:'Inflace'!$V$20,5,FALSE) -> 1.062552 | F47: =VLOOKUP(F$3,Inflace!$R$4:'Inflace'!$V$20,5,FALSE) -> 0.886034 | G47: =VLOOKUP(G$3,Inflace!$R$4:'Inflace'!$V$20,5,FALSE) -> 0.805365 | H47: =VLOOKUP(H$3,Inflace!$R$4:'Inflace'!$V$20,5,FALSE) -> 0.80412 | I47: =VLOOKUP(I$3,Inflace!$R$4:'Inflace'!$V$20,5,FALSE) -> 0.797141 | J47: =VLOOKUP(J$3,Inflace!$R$4:'Inflace'!$V$20,5,FALSE) -> 0.730638 | K47: =VLOOKUP(K$3,Inflace!$R$4:'Inflace'!$V$20,5,FALSE) -> 0.682675 | L47: =VLOOKUP(L$3,Inflace!$R$4:'Inflace'!$V$20,5,FALSE) -> 0.719843 | M47: =VLOOKUP(M$3,Inflace!$R$4:'Inflace'!$V$20,5,FALSE) -> 0.755045 | N47: =VLOOKUP(N$3,Inflace!$R$4:'Inflace'!$V$20,5,FALSE) -> 0.719355 | O47: =VLOOKUP(O$3,Inflace!$R$4:'Inflace'!$V$20,5,FALSE) -> 0.778294 | P47: =VLOOKUP(P$3,Inflace!$R$4:'Inflace'!$V$20,5,FALSE) -> 0.753159 | Q47: =VLOOKUP(Q$3,Inflace!$R$4:'Inflace'!$V$20,5,FALSE) -> 0.753731 | R47: =VLOOKUP(R$3,Inflace!$R$4:'Inflace'!$V$20,5,FALSE) -> 0.901659 | S47: =VLOOKUP(S$3,Inflace!$R$4:'Inflace'!$V$20,5,FALSE) -> 0.904035 | T47: =Premise!L8/Premise!L10 -> 1.106151864 | U47: =GROWTH($C47:T47,,U$6) -> 0.7792742555 | V47: =GROWTH($C47:U47,,V$6) -> 0.7728951756 | W47: =GROWTH($C47:V47,,W$6) -> 0.7665683143 | X47: =GROWTH($C47:W47,,X$6) -> 0.7602932443 | Y47: =GROWTH($C47:X47,,Y$6) -> 0.7540695414 | Z47: =GROWTH($C47:Y47,,Z$6) -> 0.7478967854 | AA47: =GROWTH($C47:Z47,,AA$6) -> 0.741774559 | AB47: =GROWTH($C47:AA47,,AB$6) -> 0.7357024488 | AC47: =GROWTH($C47:AB47,,AC$6) -> 0.7296800443 | AD47: =GROWTH($C47:AC47,,AD$6) -> 0.7237069388 | AE47: =GROWTH($C47:AD47,,AE$6) -> 0.7177827287 | AF47: =GROWTH($C47:AE47,,AF$6) -> 0.7119070138 | AG47: =GROWTH($C47:AF47,,AG$6) -> 0.706079397 | AH47: -
B48: CH
B49: Elektřina | C49: - | D49: - | E49: - | F49: - | G49: - | H49: - | I49: - | J49: - | K49: - | L49: 0.5 | M49: =Tab_VstSv[[#This Row],[2009]]+($S$49-$L$49)/7 -> 0.5685714286 | N49: =Tab_VstSv[[#This Row],[2010]]+($S$49-$L$49)/7 -> 0.6371428571 | O49: =Tab_VstSv[[#This Row],[2011]]+($S$49-$L$49)/7 -> 0.7057142857 | P49: =Tab_VstSv[[#This Row],[2012]]+($S$49-$L$49)/7 -> 0.7742857143 | Q49: =Tab_VstSv[[#This Row],[2013]]+($S$49-$L$49)/7 -> 0.8428571429 | R49: =Tab_VstSv[[#This Row],[2014]]+($S$49-$L$49)/7 -> 0.9114285714 | S49: 0.98 | T49: =GROWTH($L49:S49,,T$6-9) -> 1.10969877 | U49: =GROWTH($L49:T49,,U$6-9) -> 1.220612394 | V49: =GROWTH($L49:U49,,V$6-9) -> 1.342611757 | W49: =GROWTH($L49:V49,,W$6-9) -> 1.476804872 | X49: =GROWTH($L49:W49,,X$6-9) -> 1.624410496 | Y49: =GROWTH($L49:X49,,Y$6-9) -> 1.7867692 | Z49: =GROWTH($L49:Y49,,Z$6-9) -> 1.965355544 | AA49: =GROWTH($L49:Z49,,AA$6-9) -> 2.16179147 | AB49: =GROWTH($L49:AA49,,AB$6-9) -> 2.37786103 | AC49: =GROWTH($L49:AB49,,AC$6-9) -> 2.615526593 | AD49: =GROWTH($L49:AC49,,AD$6-9) -> 2.876946664 | AE49: =GROWTH($L49:AD49,,AE$6-9) -> 3.164495491 | AF49: =GROWTH($L49:AE49,,AF$6-9) -> 3.480784623 | AG49: =GROWTH($L49:AF49,,AG$6-9) -> 3.828686635 | AH49: -
B50: Zemní plyn | C50: 4.72 | D50: 4.64 | E50: 4.27 | F50: 4.77 | G50: 5.18 | H50: 6.05 | I50: 7.14 | J50: 7.73 | K50: 12.55 | L50: 9.06 | M50: 10.91 | N50: 14.73 | O50: 16.75 | P50: 16.17 | Q50: 16.33 | R50: 10.31 | S50: 6.94 | T50: =GROWTH($C50:S50,,T$6) -> 16.5734988 | U50: =GROWTH($C50:T50,,U$6) -> 17.89041314 | V50: =GROWTH($C50:U50,,V$6) -> 19.31196823 | W50: =GROWTH($C50:V50,,W$6) -> 20.84647872 | X50: =GROWTH($C50:W50,,X$6) -> 22.50291994 | Y50: =GROWTH($C50:X50,,Y$6) -> 24.2909804 | Z50: =GROWTH($C50:Y50,,Z$6) -> 26.22111843 | AA50: =GROWTH($C50:Z50,,AA$6) -> 28.30462338 | AB50: =GROWTH($C50:AA50,,AB$6) -> 30.55368163 | AC50: =GROWTH($C50:AB50,,AC$6) -> 32.9814479 | AD50: =GROWTH($C50:AC50,,AD$6) -> 35.60212215 | AE50: =GROWTH($C50:AD50,,AE$6) -> 38.43103267 | AF50: =GROWTH($C50:AE50,,AF$6) -> 41.4847257 | AG50: =GROWTH($C50:AF50,,AG$6) -> 44.78106226 | AH50: BP hodnoty Japonsko
B51: Voda | C51: =$T$51*C60/$T$60 -> 2.368511917 | D51: 2.503855455 | E51: 2.436183686 | F51: 2.233168379 | G51: 2.233168379 | H51: 2.300840148 | I51: 2.436183686 | J51: 2.571527224 | K51: 2.909886069 | L51: 3.045229607 | M51: 3.248244914 | N51: 3.518931991 | O51: 3.721947298 | P51: 3.924962605 | Q51: 3.992634374 | R51: 4.26332145 | S51: =$T$51*S60/$T$60 -> 4.060306143 | T51: =3.35+1.05 -> 4.4 | U51: =$T$51*U60/$T$60 -> 4.597152393 | V51: =$T$51*V60/$T$60 -> 4.803138664 | W51: 5.018354637 | X51: 5.243213869 | Y51: 5.478148451 | Z51: 5.723609832 | AA51: 5.980069689 | AB51: 6.248020836 | AC51: 6.527978168 | AD51: 6.820479648 | AE51: =$T$51*AE60/$T$60 -> 7.126087349 | AF51: 7.445388524 | AG51: 7.778996743 | AH51: Vodné i stočné
B52: Mzdové náklady | C52: - | D52: - | E52: - | F52: - | G52: - | H52: - | I52: - | J52: 20884 | K52: 24192 | L52: 26599 | M52: 30700 | N52: 36665 | O52: 41650 | P52: 46431 | Q52: 51369 | R52: 59470 | S52: =GROWTH($J52:R52,,S$6-7) -> 68350.98961 | T52: =GROWTH($J52:S52,,T$6-7) -> 77923.40569 | U52: =GROWTH($J52:T52,,U$6-7) -> 88836.41904 | V52: =GROWTH($J52:U52,,V$6-7) -> 101277.7775 | W52: =GROWTH($J52:V52,,W$6-7) -> 115461.5228 | X52: =GROWTH($J52:W52,,X$6-7) -> 131631.6726 | Y52: =GROWTH($J52:X52,,Y$6-7) -> 150066.4187 | Z52: =GROWTH($J52:Y52,,Z$6-7) -> 171082.9132 | AA52: =GROWTH($J52:Z52,,AA$6-7) -> 195042.7248 | AB52: =GROWTH($J52:AA52,,AB$6-7) -> 222358.0588 | AC52: =GROWTH($J52:AB52,,AC$6-7) -> 253498.8495 | AD52: =GROWTH($J52:AC52,,AD$6-7) -> 289000.8441 | AE52: =GROWTH($J52:AD52,,AE$6-7) -> 329474.8203 | AF52: =GROWTH($J52:AE52,,AF$6-7) -> 375617.0939 | AG52: =GROWTH($J52:AF52,,AG$6-7) -> 428221.4985 | AH52: Yuan, Average annual wages
B53: Odměny | C53: - | D53: - | E53: - | F53: - | G53: - | H53: - | I53: - | J53: =J52*$C$163 -> 1055.42261 | K53: =K52*$C$163 -> 1222.600258 | L53: =L52*$C$163 -> 1344.243727 | M53: =M52*$C$163 -> 1551.497516 | N53: =N52*$C$163 -> 1852.952978 | O53: =O52*$C$163 -> 2104.881809 | P53: =P52*$C$163 -> 2346.501015 | Q53: =Q52*$C$163 -> 2596.054589 | R53: =R52*$C$163 -> 3005.457892 | S53: =S52*$C$163 -> 3454.279824 | T53: =T52*$C$163 -> 3938.044637 | U53: =U52*$C$163 -> 4489.559722 | V53: =V52*$C$163 -> 5118.313364 | W53: =W52*$C$163 -> 5835.122666 | X53: =X52*$C$163 -> 6652.319643 | Y53: =Y52*$C$163 -> 7583.963382 | Z53: =Z52*$C$163 -> 8646.081918 | AA53: =AA52*$C$163 -> 9856.947979 | AB53: =AB52*$C$163 -> 11237.39335 | AC53: =AC52*$C$163 -> 12811.16727 | AD53: =AD52*$C$163 -> 14605.34501 | AE53: 16650.79366 | AF53: 18982.7032 | AG53: 21641.1919 | AH53: -
B54: Pozemek | C54: =$S$54*C60/$S$60 -> 420.5833333 | D54: 444.6166667 | E54: 432.6 | F54: 396.55 | G54: 396.55 | H54: 408.5666667 | I54: 432.6 | J54: 456.6333333 | K54: 516.7166667 | L54: 540.75 | M54: 576.8 | N54: 624.8666667 | O54: 660.9166667 | P54: 696.9666667 | Q54: 708.9833333 | R54: =$S$54*R60/$S$60 -> 757.05 | S54: 721 | T54: =$S$54*T60/$S$60 -> 781.3203951 | U54: =$S$54*U60/$S$60 -> 816.3293009 | V54: 852.9068634 | W54: 891.1233699 | X54: 931.0522573 | Y54: 972.7702528 | Z54: 1016.357522 | AA54: 1061.897821 | AB54: 1109.478661 | AC54: 1159.191473 | AD54: 1211.131785 | AE54: =$S$54*AE60/$S$60 -> 1265.399405 | AF54: 1322.098614 | AG54: 1381.338366 | AH54: Cena ve velkoměstě
B55: Výstavba | C55: =$S$55*C60/$S$60 -> 1341.666667 | D55: 1418.333333 | E55: 1380 | F55: 1265 | G55: 1265 | H55: 1303.333333 | I55: 1380 | J55: 1456.666667 | K55: 1648.333333 | L55: 1725 | M55: 1840 | N55: 1993.333333 | O55: 2108.333333 | P55: 2223.333333 | Q55: 2261.666667 | R55: =$S$55*R60/$S$60 -> 2415 | S55: 2300 | T55: =$S$55*T60/$S$60 -> 2492.422897 | U55: =$S$55*U60/$S$60 -> 2604.101792 | V55: 2720.784724 | W55: 2842.69591 | X55: 2970.069614 | Y55: 3103.150599 | Z55: 3242.194591 | AA55: 3387.468777 | AB55: 3539.252317 | AC55: 3697.836877 | AD55: 3863.527192 | AE55: =$S$55*AE60/$S$60 -> 4036.641653 | AF55: 4217.512917 | AG55: 4406.488545 | AH55: Zdroj Peking
B56: Pronájem haly | C56: =$P$56*C60/$P$60 -> 22.93103448 | D56: 24.24137931 | E56: 23.5862069 | F56: 21.62068966 | G56: 21.62068966 | H56: 22.27586207 | I56: 23.5862069 | J56: 24.89655172 | K56: 28.17241379 | L56: 29.48275862 | M56: 31.44827586 | N56: 34.06896552 | O56: =$P$56*O60/$P$60 -> 36.03448276 | P56: 38 | Q56: =$P$56*Q60/$P$60 -> 38.65517241 | R56: =$P$56*R60/$P$60 -> 41.27586207 | S56: 39.31034483 | T56: 42.59913197 | U56: 44.5078867 | V56: 46.50216769 | W56: 48.58580715 | X56: 50.762809 | Y56: 53.03735656 | Z56: 55.41382059 | AA56: 57.89676771 | AB56: 60.49096914 | AC56: 63.20140989 | AD56: 66.03329834 | AE56: =$P$56*AE60/$P$60 -> 68.99207624 | AF56: 72.08342917 | AG56: 75.31329747 | AH56: Měsíční náklady
B57: Inflace | C57: =AVERAGEIF(Inflace!$J$4:'Inflace'!$L$216,C5,Inflace!$L$4:'Inflace'!$L$216)/100 -> 0.002583333333 | D57: =AVERAGEIF(Inflace!$J$4:'Inflace'!$L$216,D5,Inflace!$L$4:'Inflace'!$L$216)/100 -> 0.00725 | E57: =AVERAGEIF(Inflace!$J$4:'Inflace'!$L$216,E5,Inflace!$L$4:'Inflace'!$L$216)/100 -> -0.007666666667 | F57: =AVERAGEIF(Inflace!$J$4:'Inflace'!$L$216,F5,Inflace!$L$4:'Inflace'!$L$216)/100 -> 0.01166666667 | G57: =AVERAGEIF(Inflace!$J$4:'Inflace'!$L$216,G5,Inflace!$L$4:'Inflace'!$L$216)/100 -> 0.039 | H57: =AVERAGEIF(Inflace!$J$4:'Inflace'!$L$216,H5,Inflace!$L$4:'Inflace'!$L$216)/100 -> 0.01816666667 | I57: =AVERAGEIF(Inflace!$J$4:'Inflace'!$L$216,I5,Inflace!$L$4:'Inflace'!$L$216)/100 -> 0.01466666667 | J57: =AVERAGEIF(Inflace!$J$4:'Inflace'!$L$216,J5,Inflace!$L$4:'Inflace'!$L$216)/100 -> 0.04766666667 | K57: =AVERAGEIF(Inflace!$J$4:'Inflace'!$L$216,K5,Inflace!$L$4:'Inflace'!$L$216)/100 -> 0.059 | L57: =AVERAGEIF(Inflace!$J$4:'Inflace'!$L$216,L5,Inflace!$L$4:'Inflace'!$L$216)/100 -> -0.006833333333 | M57: =AVERAGEIF(Inflace!$J$4:'Inflace'!$L$216,M5,Inflace!$L$4:'Inflace'!$L$216)/100 -> 0.03325 | N57: =AVERAGEIF(Inflace!$J$4:'Inflace'!$L$216,N5,Inflace!$L$4:'Inflace'!$L$216)/100 -> 0.05416666667 | O57: =AVERAGEIF(Inflace!$J$4:'Inflace'!$L$216,O5,Inflace!$L$4:'Inflace'!$L$216)/100 -> 0.0265 | P57: =AVERAGEIF(Inflace!$J$4:'Inflace'!$L$216,P5,Inflace!$L$4:'Inflace'!$L$216)/100 -> 0.02633333333 | Q57: =AVERAGEIF(Inflace!$J$4:'Inflace'!$L$216,Q5,Inflace!$L$4:'Inflace'!$L$216)/100 -> 0.01991666667 | R57: =AVERAGEIF(Inflace!$J$4:'Inflace'!$L$216,R5,Inflace!$L$4:'Inflace'!$L$216)/100 -> 0.01441666667 | S57: =AVERAGEIF(Inflace!$J$4:'Inflace'!$L$216,S5,Inflace!$L$4:'Inflace'!$L$216)/100 -> 0.02008333333 | T57: =AVERAGEIF(Inflace!$J$4:'Inflace'!$L$216,T5,Inflace!$L$4:'Inflace'!$L$216)/100 -> 0.01466666667 | U57: =GROWTH($M57:T57,,U$6-10) -> 0.01203959403 | V57: =GROWTH($M57:U57,,V$6-10) -> 0.0103384509 | W57: =GROWTH($M57:V57,,W$6-10) -> 0.008877672006 | X57: =GROWTH($M57:W57,,X$6-10) -> 0.007623294924 | Y57: =GROWTH($M57:X57,,Y$6-10) -> 0.006546155959 | Z57: =GROWTH($M57:Y57,,Z$6-10) -> 0.005621212123 | AA57: =GROWTH($M57:Z57,,AA$6-10) -> 0.004826958894 | AB57: =GROWTH($M57:AA57,,AB$6-10) -> 0.004144930249 | AC57: =GROWTH($M57:AB57,,AC$6-10) -> 0.003559269334 | AD57: =GROWTH($M57:AC57,,AD$6-10) -> 0.003056359802 | AE57: =GROWTH($M57:AD57,,AE$6-10) -> 0.002624509235 | AF57: =GROWTH($M57:AE57,,AF$6-10) -> 0.002253677306 | AG57: =GROWTH($M57:AF57,,AG$6-10) -> 0.001935242343 | AH57: -
B58: Odvody zaměstnavatele | C58: - | D58: - | E58: - | F58: - | G58: - | H58: - | I58: - | J58: - | K58: - | L58: 0.435 | M58: 0.44 | N58: 0.44 | O58: 0.44 | P58: 0.348 | Q58: 0.35 | R58: 0.35 | S58: 0.35 | T58: 0.339 | U58: =GROWTH($L58:T58,,U$6-10) -> 0.3290326321 | V58: =GROWTH($L58:U58,,V$6-10) -> 0.3206331585 | W58: =GROWTH($L58:V58,,W$6-10) -> 0.3125705481 | X58: =GROWTH($L58:W58,,X$6-10) -> 0.3048101855 | Y58: =GROWTH($L58:X58,,Y$6-10) -> 0.2973246255 | Z58: =GROWTH($L58:Y58,,Z$6-10) -> 0.2900915841 | AA58: =GROWTH($L58:Z58,,AA$6-10) -> 0.2830925953 | AB58: =GROWTH($L58:AA58,,AB$6-10) -> 0.2763120851 | AC58: =GROWTH($L58:AB58,,AC$6-10) -> 0.2697367155 | AD58: =GROWTH($L58:AC58,,AD$6-10) -> 0.263354909 | AE58: =GROWTH($L58:AD58,,AE$6-10) -> 0.257156497 | AF58: =GROWTH($L58:AE58,,AF$6-10) -> 0.2511324542 | AG58: =GROWTH($L58:AF58,,AG$6-10) -> 0.245274696 | AH58: -
B59: Clo a poplatky | C59: - | D59: - | E59: - | F59: - | G59: - | H59: 0.0672809146 | I59: 0.05823870069 | J59: 0.05497040471 | K59: 0.0555099717 | L59: 0.04195902724 | M59: 0.04881596847 | N59: 0.05144805463 | O59: 0.05113801549 | P59: 0.04551820952 | Q59: 0.04637551666 | R59: =GROWTH($H59:Q59,,R$6-5) -> 0.04300947458 | S59: 0.04159644407 | T59: =GROWTH($H59:S59,,T$6-5) -> 0.04022983717 | U59: =GROWTH($H59:T59,,U$6-5) -> 0.03890812868 | V59: =GROWTH($H59:U59,,V$6-5) -> 0.03762984353 | W59: =GROWTH($H59:V59,,W$6-5) -> 0.03639355507 | X59: =GROWTH($H59:W59,,X$6-5) -> 0.03519788355 | Y59: =GROWTH($H59:X59,,Y$6-5) -> 0.03404149454 | Z59: =GROWTH($H59:Y59,,Z$6-5) -> 0.03292309747 | AA59: =GROWTH($H59:Z59,,AA$6-5) -> 0.03184144414 | AB59: =GROWTH($H59:AA59,,AB$6-5) -> 0.03079532738 | AC59: =GROWTH($H59:AB59,,AC$6-5) -> 0.02978357968 | AD59: =GROWTH($H59:AC59,,AD$6-5) -> 0.02880507187 | AE59: =GROWTH($H59:AD59,,AE$6-5) -> 0.02785871189 | AF59: =GROWTH($H59:AE59,,AF$6-5) -> 0.02694344356 | AG59: =GROWTH($H59:AF59,,AG$6-5) -> 0.0260582454 | AH59: -
B60: ISC | C60: =VLOOKUP(C$3,Inflace!$X$4:'Inflace'!$AB$20,5,FALSE) -> 35 | D60: =VLOOKUP(D$3,Inflace!$X$4:'Inflace'!$AB$20,5,FALSE) -> 37 | E60: =VLOOKUP(E$3,Inflace!$X$4:'Inflace'!$AB$20,5,FALSE) -> 36 | F60: =VLOOKUP(F$3,Inflace!$X$4:'Inflace'!$AB$20,5,FALSE) -> 33 | G60: =VLOOKUP(G$3,Inflace!$X$4:'Inflace'!$AB$20,5,FALSE) -> 33 | H60: =VLOOKUP(H$3,Inflace!$X$4:'Inflace'!$AB$20,5,FALSE) -> 34 | I60: =VLOOKUP(I$3,Inflace!$X$4:'Inflace'!$AB$20,5,FALSE) -> 36 | J60: =VLOOKUP(J$3,Inflace!$X$4:'Inflace'!$AB$20,5,FALSE) -> 38 | K60: =VLOOKUP(K$3,Inflace!$X$4:'Inflace'!$AB$20,5,FALSE) -> 43 | L60: =VLOOKUP(L$3,Inflace!$X$4:'Inflace'!$AB$20,5,FALSE) -> 45 | M60: =VLOOKUP(M$3,Inflace!$X$4:'Inflace'!$AB$20,5,FALSE) -> 48 | N60: =VLOOKUP(N$3,Inflace!$X$4:'Inflace'!$AB$20,5,FALSE) -> 52 | O60: =VLOOKUP(O$3,Inflace!$X$4:'Inflace'!$AB$20,5,FALSE) -> 55 | P60: =VLOOKUP(P$3,Inflace!$X$4:'Inflace'!$AB$20,5,FALSE) -> 58 | Q60: =VLOOKUP(Q$3,Inflace!$X$4:'Inflace'!$AB$20,5,FALSE) -> 59 | R60: =VLOOKUP(R$3,Inflace!$X$4:'Inflace'!$AB$20,5,FALSE) -> 63 | S60: =VLOOKUP(S$3,Inflace!$X$4:'Inflace'!$AB$20,5,FALSE) -> 60 | T60: =GROWTH($C60:S60,,T$6) -> 65.01972775 | U60: =GROWTH($C60:T60,,U$6) -> 67.93309023 | V60: =GROWTH($C60:U60,,V$6) -> 70.97699279 | W60: =GROWTH($C60:V60,,W$6) -> 74.1572846 | X60: =GROWTH($C60:W60,,X$6) -> 77.48007689 | Y60: =GROWTH($C60:X60,,Y$6) -> 80.95175474 | Z60: =GROWTH($C60:Y60,,Z$6) -> 84.57898932 | AA60: =GROWTH($C60:Z60,,AA$6) -> 88.36875071 | AB60: =GROWTH($C60:AA60,,AB$6) -> 92.32832131 | AC60: =GROWTH($C60:AB60,,AC$6) -> 96.46530983 | AD60: =GROWTH($C60:AC60,,AD$6) -> 100.7876659 | AE60: =GROWTH($C60:AD60,,AE$6) -> 105.3036953 | AF60: =GROWTH($C60:AE60,,AF$6) -> 110.0220761 | AG60: =GROWTH($C60:AF60,,AG$6) -> 114.9518751 | AH60: -
B61: WK | C61: =VLOOKUP(C$3,Inflace!$R$4:'Inflace'!$V$20,4,FALSE) -> 8.278504 | D61: =VLOOKUP(D$3,Inflace!$R$4:'Inflace'!$V$20,4,FALSE) -> 8.277068 | E61: =VLOOKUP(E$3,Inflace!$R$4:'Inflace'!$V$20,4,FALSE) -> 8.276958 | F61: =VLOOKUP(F$3,Inflace!$R$4:'Inflace'!$V$20,4,FALSE) -> 8.277037 | G61: =VLOOKUP(G$3,Inflace!$R$4:'Inflace'!$V$20,4,FALSE) -> 8.276801 | H61: =VLOOKUP(H$3,Inflace!$R$4:'Inflace'!$V$20,4,FALSE) -> 8.194317 | I61: =VLOOKUP(I$3,Inflace!$R$4:'Inflace'!$V$20,4,FALSE) -> 7.973438 | J61: =VLOOKUP(J$3,Inflace!$R$4:'Inflace'!$V$20,4,FALSE) -> 7.607532 | K61: =VLOOKUP(K$3,Inflace!$R$4:'Inflace'!$V$20,4,FALSE) -> 6.948655 | L61: =VLOOKUP(L$3,Inflace!$R$4:'Inflace'!$V$20,4,FALSE) -> 6.831416 | M61: =VLOOKUP(M$3,Inflace!$R$4:'Inflace'!$V$20,4,FALSE) -> 6.770269 | N61: =VLOOKUP(N$3,Inflace!$R$4:'Inflace'!$V$20,4,FALSE) -> 6.461461 | O61: =VLOOKUP(O$3,Inflace!$R$4:'Inflace'!$V$20,4,FALSE) -> 6.312333 | P61: =VLOOKUP(P$3,Inflace!$R$4:'Inflace'!$V$20,4,FALSE) -> 6.195758 | Q61: =VLOOKUP(Q$3,Inflace!$R$4:'Inflace'!$V$20,4,FALSE) -> 6.143434 | R61: =VLOOKUP(R$3,Inflace!$R$4:'Inflace'!$V$20,4,FALSE) -> 6.227489 | S61: =VLOOKUP(S$3,Inflace!$R$4:'Inflace'!$V$20,4,FALSE) -> 6.644478 | T61: =Premise!L10/Premise!L12 -> 6.644478 | U61: =GROWTH($C61:T61,,U$6) -> 5.919313821 | V61: =GROWTH($C61:U61,,V$6) -> 5.799217813 | W61: =GROWTH($C61:V61,,W$6) -> 5.681558414 | X61: =GROWTH($C61:W61,,X$6) -> 5.566286187 | Y61: =GROWTH($C61:X61,,Y$6) -> 5.4533527 | Z61: =GROWTH($C61:Y61,,Z$6) -> 5.342710502 | AA61: =GROWTH($C61:Z61,,AA$6) -> 5.234313107 | AB61: =GROWTH($C61:AA61,,AB$6) -> 5.128114968 | AC61: =GROWTH($C61:AB61,,AC$6) -> 5.024071467 | AD61: =GROWTH($C61:AC61,,AD$6) -> 4.922138887 | AE61: =GROWTH($C61:AD61,,AE$6) -> 4.822274402 | AF61: =GROWTH($C61:AE61,,AF$6) -> 4.72443605 | AG61: =GROWTH($C61:AF61,,AG$6) -> 4.628582726 | AH61: -
B63: - | C63: 2000 | D63: 2001 | E63: 2002 | F63: 2003 | G63: 2004 | H63: 2005 | I63: 2006 | J63: 2007 | K63: 2008 | L63: 2009 | M63: 2010 | N63: 2011 | O63: 2012 | P63: 2013 | Q63: 2014 | R63: 2015 | S63: 2016 | T63: 2017 | U63: 2018 | V63: 2019 | W63: 2020 | X63: 2021 | Y63: 2022 | Z63: 2023 | AA63: 2024 | AB63: 2025 | AC63: 2026 | AD63: 2027 | AE63: 2028 | AF63: 2029 | AG63: 2030 | AH63: Pozn.
B64: USA
B65: Elektřina | C65: =IF(ISERROR(C7/100*C46/C19)=TRUE,0,C7/100*C46/C19) -> 1.173391877 | D65: 1.319825882 | E65: 1.047632576 | F65: 0.8857626 | G65: 0.7401528 | H65: 0.7546586355 | I65: 0.7569520305 | J65: 0.649397344 | K65: 0.6367731791 | L65: 0.8330531 | M65: 0.840323 | N65: 0.7520764725 | O65: 0.82421275 | P65: 0.8571915354 | Q65: 0.89464825 | R65: 1.1118635 | S65: 1.22199585 | T65: 1.207837965 | U65: 0.9237756935 | V65: 0.9268007748 | W65: 0.9298357623 | X65: 0.9328806885 | Y65: 0.9359355858 | Z65: 0.9390004871 | AA65: 0.9420754249 | AB65: 0.9451604322 | AC65: 0.9482555419 | AD65: 0.9513607872 | AE65: =IF(ISERROR(AE7/100*AE46/AE19)=TRUE,0,AE7/100*AE46/AE19) -> 0.9544762012 | AF65: 0.9576018173 | AG65: 0.9607376687 | AH65: -
B66: Zemní plyn | C66: =IF(ISERROR(C8*$C$127*C46/C19)=TRUE,0,C8*$C$127*C46/C19) -> 0.04785009574 | D66: 0.0453685109 | E66: 0.03195039263 | F66: 0.04654457141 | G66: 0.0440613414 | H66: 0.06164636283 | I66: 0.044765475 | J66: 0.04133503258 | K66: 0.04427842367 | L66: 0.02173270571 | M66: 0.02457146463 | N66: 0.02079650693 | O66: 0.01583577289 | P66: 0.02127897101 | Q66: 0.0264628889 | R66: 0.01874387316 | S66: 0.01762007626 | T66: 0.02335316089 | U66: 0.01670445179 | V66: 0.01567403406 | W66: 0.01470717787 | X66: 0.01379996242 | Y66: 0.01294870875 | Z66: 0.01214996484 | AA66: 0.01140049163 | AB66: 0.01069724983 | AC66: 0.01003738766 | AD66: 0.009418229222 | AE66: =IF(ISERROR(AE8*$C$127*AE46/AE19)=TRUE,0,AE8*$C$127*AE46/AE19) -> 0.008837263712 | AF66: 0.008292135184 | AG66: 0.007780633028 | AH66: -
B67: Voda | C67: =IF(ISERROR(C9/100000/$G$127*C46/C19)=TRUE,0,C9/100000/$G$127*C46/C19) -> 102.5608435 | D67: 105.7872923 | E67: 90.24233157 | F67: 72.1528065 | G67: 62.54365927 | H67: 58.30346699 | I67: 56.11149812 | J67: 48.37935517 | K67: 39.85034606 | L67: 46.39227139 | M67: 46.47805682 | N67: 41.74697297 | O67: 48.13054064 | P67: 49.57152138 | Q67: 53.09340568 | R67: 69.02712655 | S67: 68.58142156 | T67: 61.90700379 | U67: 45.90461557 | V67: 44.65138422 | W67: 43.43236705 | X67: 42.24662999 | Y67: 41.09326447 | Z67: 39.97138671 | AA67: 38.88013708 | AB67: 37.8186794 | AC67: 36.78620034 | AD67: 35.78190875 | AE67: =IF(ISERROR(AE9/100000/$G$127*AE46/AE19)=TRUE,0,AE9/100000/$G$127*AE46/AE19) -> 34.80503509 | AF67: 33.85483084 | AG67: 32.93056789 | AH67: -
B68: Mzdové náklady | C68: =IF(ISERROR(C10*C46/C19)=TRUE,0,C10*C46/C19) -> 2002370.079 | D68: 1994116.176 | E68: 1727022.302 | F68: 1504132.089 | G68: 1397218.308 | H68: 1304050.122 | I68: 1248247.792 | J68: 1145354.272 | K68: 959991.0504 | L68: 1079156.43 | M68: 1088848.527 | N68: 1011781.75 | O68: 1128701.607 | P68: 1122744.776 | Q68: 1208480.893 | R68: 1474965.649 | S68: 1470158.767 | T68: 1476921.401 | U68: 1104860.223 | V68: 1084224.698 | W68: 1063974.584 | X68: 1044102.683 | Y68: 1024601.929 | Z68: 1005465.393 | AA68: 986686.2697 | AB68: 968257.8854 | AC68: 950173.6888 | AD68: 932427.2516 | AE68: =IF(ISERROR(AE10*AE46/AE19)=TRUE,0,AE10*AE46/AE19) -> 915012.2654 | AF68: 897922.5397 | AG68: 881151.9996 | AH68: -
B69: Pozemek | C69: =IF(ISERROR(C12*C46/C19)=TRUE,0,C12*C46/C19) -> 792.6908516 | D69: 817.628014 | E69: 697.4813017 | F69: 557.667699 | G69: 483.3987789 | H69: 450.6264117 | I69: 433.684725 | J69: 373.923136 | K69: 308.0025833 | L69: 358.5650025 | M69: 359.2280364 | N69: 322.6615774 | O69: 372.0000531 | P69: 383.1373664 | Q69: 410.3579447 | R69: 533.5093768 | S69: 530.0645312 | T69: 478.4780805 | U69: 354.7959196 | V69: 345.1097179 | W69: 335.6879569 | X69: 326.5234172 | Y69: 317.6090765 | Z69: 308.9381042 | AA69: 300.5038561 | AB69: 292.2998695 | AC69: 284.319858 | AD69: 276.557707 | AE69: =IF(ISERROR(AE12*AE46/AE19)=TRUE,0,AE12*AE46/AE19) -> 269.0074687 | AF69: 261.6633576 | AG69: 254.5197465 | AH69: -
B70: Výstavba | C70: =IF(ISERROR(C13*C46/C19)=TRUE,0,C13*C46/C19) -> 26095.94568 | D70: 26916.89477 | E70: 22961.5797 | F70: 18358.81662 | G70: 15913.83104 | H70: 14834.94144 | I70: 14277.20908 | J70: 12309.81514 | K70: 10139.66374 | L70: 11804.21448 | M70: 11826.04203 | N70: 10622.24823 | O70: 12246.50588 | P70: 12613.15415 | Q70: 13509.27491 | R70: 17563.5075 | S70: 17450.10074 | T70: 15751.83815 | U70: 11680.1336 | V70: 11361.25696 | W70: 11051.08589 | X70: 10749.38274 | Y70: 10455.91632 | Z70: 10170.46175 | AA70: 9892.800314 | AB70: 9622.719249 | AC70: 9360.011605 | AD70: 9104.476082 | AE70: =IF(ISERROR(AE13*AE46/AE19)=TRUE,0,AE13*AE46/AE19) -> 8855.916875 | AF70: 8614.143526 | AG70: 8378.970776 | AH70: -
B71: Pronájem haly | C71: =IF(ISERROR(C14/$E$127*C46/C19/12)=TRUE,0,C14/$E$127*C46/C19/12) -> 0 | D71: 0 | E71: 0 | F71: 0 | G71: 0 | H71: 0 | I71: 0 | J71: 0 | K71: 0 | L71: 0 | M71: 0 | N71: 0 | O71: 0 | P71: 84.80585967 | Q71: 112.8208565 | R71: 167.1803935 | S71: 155.0124365 | T71: 143.0187736 | U71: 129.2601005 | V71: 135.6183616 | W71: 142.2893834 | X71: 149.2885506 | Y71: 156.6320044 | Z71: 164.3366803 | AA71: 172.4203466 | AB71: 180.9016457 | AC71: 189.8001371 | AD71: 199.1363423 | AE71: =IF(ISERROR(AE14/$E$127*AE46/AE19/12)=TRUE,0,AE14/$E$127*AE46/AE19/12) -> 208.9317923 | AF71: 219.2090772 | AG71: 229.9918983 | AH71: -
B72: UK
B73: Elektřina | C73: =IF(ISERROR(C21/100*C46/C19)=TRUE,0,C21/100*C46/C19) -> 1.412702062 | D73: 1.342647078 | E73: 1.132752723 | F73: 0.9450015 | G73: 0.9354709 | H73: 1.142768791 | I73: 1.434819521 | J73: 1.317058988 | K73: 1.36061186 | L73: 1.6413243 | M73: 1.4973028 | N73: 1.429830094 | O73: 1.65821425 | P73: 1.739824829 | Q73: 1.9470535 | R73: 2.33688125 | S73: 2.268024298 | T73: 2.992512291 | U73: 2.393978783 | V73: 2.512271978 | W73: 2.636410371 | X73: 2.766682789 | Y73: 2.903392333 | Z73: 3.046857077 | AA73: 3.197410817 | AB73: 3.355403838 | AC73: 3.521203737 | AD73: 3.695196272 | AE73: =IF(ISERROR(AE21/100*AE46/AE19)=TRUE,0,AE21/100*AE46/AE19) -> 3.877786267 | AF73: 4.069398544 | AG73: 4.27047892 | AH73: -
B74: Zemní plyn | C74: =IF(ISERROR(C22*$C$127*C46/C19)=TRUE,0,C22*$C$127*C46/C19) -> 0.03065573509 | D74: 0.03533616205 | E74: 0.02273946863 | F74: 0.02752991524 | G74: 0.03359206541 | H74: 0.05181664666 | I74: 0.05211601898 | J74: 0.03574439508 | K74: 0.0539846544 | L74: 0.02709604697 | M74: 0.03671726833 | N74: 0.04688289842 | O74: 0.05427768534 | P74: 0.06102648289 | Q74: 0.05018823757 | R74: 0.04707595835 | S74: 0.03359274702 | T74: 0.07278670696 | U74: 0.05750192158 | V74: 0.05959017318 | W74: 0.06175426215 | X74: 0.06399694262 | Y74: 0.06632106874 | Z74: 0.0687295983 | AA74: 0.07122559651 | AB74: 0.0738122399 | AC74: 0.07649282037 | AD74: 0.07927074935 | AE74: =IF(ISERROR(AE22*$C$127*AE46/AE19)=TRUE,0,AE22*$C$127*AE46/AE19) -> 0.08214956217 | AF74: 0.08513292255 | AG74: 0.08822462725 | AH74: -
B75: Voda | C75: =IF(ISERROR(C23*C46/C33/C19)=TRUE,0,C23*C46/C33/C19) -> 191.5706103 | D75: =IF(ISERROR(D23*D46/D33/D19)=TRUE,0,D23*D46/D33/D19) -> 176.4601656 | E75: 162.3665294 | F75: 155.0593551 | G75: 166.5362868 | H75: 157.928346 | I75: 153.1281447 | J75: 158.9052249 | K75: 109.2698145 | L75: 92.28804219 | M75: 90.00894736 | N75: 88.10991366 | O75: 96.99702977 | P75: 96.84054743 | Q75: 114.9902168 | R75: 128.6859552 | S75: 100.6497283 | T75: 105.4867623 | U75: 86.99300747 | V75: 83.66437164 | W75: 80.46310025 | X75: 77.38431993 | Y75: 74.42334378 | Z75: 71.57566422 | AA75: 68.83694616 | AB75: 66.20302037 | AC75: 63.66987716 | AD75: 61.23366026 | AE75: 58.89066096 | AF75: 56.63731244 | AG75: 54.47018438 | AH75: -
B76: Mzdové náklady | C76: =IF(ISERROR(C24*C46/C19)=TRUE,0,C24*C46/C19) -> 1441882.465 | D76: =IF(ISERROR(D24*D46/D19)=TRUE,0,D24*D46/D19) -> 1492810.553 | E76: 1305710.313 | F76: 1152958.248 | G76: 1076151.332 | H76: 993538.0404 | I76: 966526.0628 | J76: 892089.3077 | K76: 731281.9276 | L76: 830403.343 | M76: 829761.6678 | N76: 751527.8991 | O76: 828715.575 | P76: 823099.5798 | Q76: 869282.585 | R76: 1040625.52 | S76: 1046883.845 | T76: 1072197.213 | U76: 799467.6049 | V76: 781968.1593 | W76: 764851.7568 | X76: 748110.0131 | Y76: 731734.7273 | Z76: 715717.8781 | AA76: 700051.6196 | AB76: 684728.278 | AC76: 669740.347 | AD76: 655080.4849 | AE76: 640741.5108 | AF76: 626716.4006 | AG76: 612998.2843 | AH76: -
B77: Pozemek | C77: =IF(ISERROR(C26/C33*C19*C46)=TRUE,0,C26/C33*C19*C46) -> 13986.57151 | D77: 12883.35784 | E77: 11854.38137 | F77: 11320.88453 | G77: 12158.81538 | H77: 11530.34958 | I77: 11179.88684 | J77: 11601.67151 | K77: 7977.789868 | L77: 6737.950563 | M77: 6571.553834 | N77: 6432.905372 | O77: 7081.753777 | P77: 7070.329 | Q77: 8395.436482 | R77: 9395.362427 | S77: 7348.437319 | T77: 7701.5892 | U77: 6351.360043 | V77: 6108.336319 | W77: 5874.611474 | X77: 5649.829703 | Y77: 5433.648815 | Z77: 5225.739712 | AA77: 5025.785888 | AB77: 4833.482949 | AC77: 4648.538147 | AD77: 4470.669936 | AE77: =IF(ISERROR(AE26/AE33*AE19*AE46)=TRUE,0,AE26/AE33*AE19*AE46) -> 4299.607541 | AF77: 4135.090551 | AG77: 3976.868517 | AH77: -
B78: Výstavba | C78: =IF(ISERROR(C27/C33*C19*C46)=TRUE,0,C27/C33*C19*C46) -> 46163.6029 | D78: 42522.37334 | E78: 39126.16856 | F78: 37365.327 | G78: 40130.97311 | H78: 38056.68021 | I78: 36899.95481 | J78: 38292.08295 | K78: 26331.22229 | L78: 22239.05079 | M78: 21689.8474 | N78: 21232.22899 | O78: 23373.796 | P78: 23336.08777 | Q78: 27709.69253 | R78: 31010.01414 | S78: 24254.00265 | T78: 25419.60375 | U78: 20963.08325 | V78: 20160.9674 | W78: 19389.54312 | X78: 18647.63604 | Y78: 17934.11674 | Z78: 17247.89902 | AA78: 16587.93822 | AB78: 15953.22967 | AC78: 15342.80713 | AD78: 14755.74136 | AE78: =IF(ISERROR(AE27/AE33*AE19*AE46)=TRUE,0,AE27/AE33*AE19*AE46) -> 14191.13863 | AF78: 13648.13944 | AG78: 13125.91716 | AH78: -
B79: Pronájem haly | C79: =IF(ISERROR(C28/C33*C19*C46/12)=TRUE,0,C28/C33*C19*C46/12) -> 393.8561359 | D79: 362.79009 | E79: 333.8145334 | F79: 318.7914803 | G79: 342.3872706 | H79: 324.6899304 | I79: 314.8210431 | J79: 326.6983268 | K79: 224.6513013 | L79: 189.7379333 | M79: 185.0522695 | N79: 181.1479855 | O79: 199.4192913 | P79: 199.0975743 | Q79: 236.4120592 | R79: 264.5695651 | S79: 206.9289908 | T79: 216.8736034 | U79: 178.8517024 | V79: 172.0082536 | W79: 165.4266575 | X79: 159.0968948 | Y79: 153.0093293 | Z79: 147.154694 | AA79: 141.5240761 | AB79: 136.1089039 | AC79: 130.9009339 | AD79: 125.8922378 | AE79: =IF(ISERROR(AE28/AE33*AE19*AE46/12)=TRUE,0,AE28/AE33*AE19*AE46/12) -> 121.0751907 | AF79: 116.4424595 | AG79: 111.9869917 | AH79: -
B80: ČR
B81: Elektřina | C81: =IF(ISERROR(C35/100*C46/C19)=TRUE,0,C35/100*C46/C19) -> 1.096195043 | D81: 1.125845709 | E81: 1.07382339 | F81: 0.9703896 | G81: 0.927760975 | H81: 1.061313573 | I81: 1.152374733 | J81: 1.168915219 | K81: 1.408412528 | L81: 1.8052661 | M81: 1.7799569 | N81: 1.764282925 | O81: 1.7893835 | P81: 1.86507656 | Q81: 1.5485095 | R81: 1.571860125 | S81: 1.608146539 | T81: 2.734759143 | U81: 2.182882241 | V81: 2.285617408 | W81: 2.393187702 | X81: 2.505820685 | Y81: 2.623754626 | Z81: 2.747239009 | AA81: 2.876535062 | AB81: 3.011916304 | AC81: 3.153669129 | AD81: 3.302093408 | AE81: =IF(ISERROR(AE35/100*AE46/AE19)=TRUE,0,AE35/100*AE46/AE19) -> 3.457503127 | AF81: 3.620227049 | AG81: 3.79060941 | AH81: -
B82: Zemní plyn | C82: =IF(ISERROR(C36*$C$127*C46/C19)=TRUE,0,C36*$C$127*C46/C19) -> 0.03291815097 | D82: 0.04090968919 | E82: 0.03079902713 | F82: 0.03356500176 | G82: 0.03238696889 | H82: 0.04093374662 | I82: 0.05211601898 | J82: 0.04752041875 | K82: 0.05803725589 | L82: 0.04765552178 | M82: 0.04494507084 | N82: 0.05440283235 | O82: 0.06271195568 | P82: 0.06154268434 | Q82: 0.05541998112 | R82: 0.04844570293 | S82: 0.03531177885 | T82: 0.08102355351 | U82: 0.063913854 | V82: 0.06613642703 | W82: 0.06843628896 | X82: 0.07081612746 | Y82: 0.07327872368 | Z82: 0.07582695548 | AA82: 0.07846380079 | AB82: 0.08119234112 | AC82: 0.0840157651 | AD82: 0.08693737226 | AE82: =IF(ISERROR(AE36*$C$127*AE46/AE19)=TRUE,0,AE36*$C$127*AE46/AE19) -> 0.08996057689 | AF82: 0.09308891199 | AG82: 0.0963260334 | AH82: -
B83: Voda | C83: =C37 -> 56.78666667 | D83: 59.626 | E83: 69.56366667 | F83: 73.82266667 | G83: 78.08166667 | H83: 83.76033333 | I83: 90.85866667 | J83: 96.53733333 | K83: 109.3143333 | L83: 99.37666667 | M83: 99.37666667 | N83: 102.216 | O83: 95.11766667 | P83: 93.698 | Q83: 89.439 | R83: 83.76033333 | S83: 85.18 | T83: 87.71 | U83: 89.86820292 | V83: 92.07951084 | W83: 94.34523047 | X83: 96.66670067 | Y83: 99.04529325 | Z83: 101.4824138 | AA83: 103.9795024 | AB83: 106.5380346 | AC83: 109.1595225 | AD83: 111.8455149 | AE83: =AE37 -> 114.5975993 | AF83: 117.4174017 | AG83: 120.3065886 | AH83: -
B84: Mzdové náklady | C84: =IF(ISERROR(C38*C46/C19)=TRUE,0,C38*C46/C19) -> 600938.7543 | D84: 621839.5775 | E84: 567522.2095 | F84: 526351.731 | G84: 503509.502 | H84: 481663.8688 | I84: 473128.9124 | J84: 438018.5085 | K84: 367638.3488 | L84: 409778.248 | M84: 420085.107 | N84: 394866.6919 | O84: 435912.615 | P84: 431100.8023 | Q84: 466939.9625 | R84: 565845.0463 | S84: 580985.7069 | T84: 612501.5922 | U84: 464487.1335 | V84: 462064.0255 | W84: 459653.5583 | X84: 457255.6659 | Y84: 454870.2826 | Z84: 452497.3433 | AA84: 450136.783 | AB84: 447788.5371 | AC84: 445452.5414 | AD84: 443128.7319 | AE84: =IF(ISERROR(AE38*AE46/AE19)=TRUE,0,AE38*AE46/AE19) -> 440817.0452 | AF84: 438517.4179 | AG84: 436229.7872 | AH84: -
B85: Pozemek | C85: =C40 -> 1253.50232 | D85: 1316.177436 | E85: 1535.540341 | F85: 1629.553015 | G85: 1723.565689 | H85: 1848.915921 | I85: 2005.603711 | J85: 2130.953943 | K85: 2412.991965 | L85: 2193.629059 | M85: 2193.629059 | N85: 2256.304175 | O85: 2099.616385 | P85: 2068.278827 | Q85: 1974.266153 | R85: 1848.915921 | S85: 1880.253479 | T85: 2334 | U85: 2391.430688 | V85: 2450.274522 | W85: 2510.566274 | X85: 2572.341573 | Y85: 2635.636922 | Z85: 2700.489725 | AA85: 2766.938303 | AB85: 2835.021923 | AC85: 2904.780817 | AD85: 2976.256206 | AE85: =AE40 -> 3049.490328 | AF85: 3124.526458 | AG85: 3201.408935 | AH85: -
B86: Výstavba | C86: =C41 -> 9667.113005 | D86: 10150.46865 | E86: 11842.21343 | F86: 12567.24691 | G86: 13292.28038 | H86: 14258.99168 | I86: 15467.38081 | J86: 16434.09211 | K86: 18609.19253 | L86: 16917.44776 | M86: 16917.44776 | N86: 17400.80341 | O86: 16192.41428 | P86: 15950.73646 | Q86: 15225.70298 | R86: 14258.99168 | S86: 14500.66951 | T86: 18000 | U86: 18442.91019 | V86: 18896.71868 | W86: 19361.69363 | X86: 19838.10982 | Y86: 20326.24876 | Z86: 20826.3989 | AA86: 21338.85581 | AB86: 21863.92228 | AC86: 22401.90861 | AD86: 22953.1327 | AE86: =AE41 -> 23517.92027 | AF86: 24096.60507 | AG86: 24689.52906 | AH86: -
B87: Pronájem haly | C87: =IF(ISERROR(C42*C19/C47*C46)=TRUE,0,C42*C19/C47*C46) -> 95.49344716 | D87: 95.96643049 | E87: 101.3536063 | F87: 111.1411664 | G87: 117.823831 | H87: 118.0063678 | I87: 121.7874904 | J87: 126.7948137 | K87: 129.2667888 | L87: 124.4473936 | M87: 118.86475 | N87: 118.9040386 | O87: 113.1416886 | P87: 115.1318099 | Q87: 116.4752152 | R87: 108.0580265 | S87: 108.8930183 | T87: 110.4727018 | U87: 119.1595508 | V87: 119.7595204 | W87: 120.3625109 | X87: 120.9685374 | Y87: 121.5776152 | Z87: 122.1897598 | AA87: 122.8049865 | AB87: 123.4233109 | AC87: 124.0447485 | AD87: 124.6693151 | AE87: =IF(ISERROR(AE42*AE19/AE47*AE46)=TRUE,0,AE42*AE19/AE47*AE46) -> 125.2970264 | AF87: 125.9278983 | AG87: 126.5619466 | AH87: -
B88: CH
B89: Elektřina | C89: =IF(ISERROR(C49/C61*C19*C46)=TRUE,0,C49/C61*C19*C46) -> 0 | D89: 0 | E89: 0 | F89: 0 | G89: 0 | H89: 0 | I89: 0 | J89: 0 | K89: 0 | L89: 1.395245144 | M89: 1.60388299 | N89: 1.744934639 | O89: 2.188750408 | P89: 2.44574156 | Q89: 2.84785466 | R89: 3.600167511 | S89: 3.604665206 | T89: 4.081727088 | U89: 3.737650129 | V89: 4.082514849 | W89: 4.459199474 | X89: 4.870639958 | Y89: 5.320043146 | Z89: 5.810911773 | AA89: 6.347071765 | AB89: 6.932702054 | AC89: 7.572367155 | AD89: 8.271052743 | AE89: =IF(ISERROR(AE49/AE61*AE19*AE46)=TRUE,0,AE49/AE61*AE19*AE46) -> 9.034204506 | AF89: 9.867770597 | AG89: 10.77824799 | AH89: -
B90: Zemní plyn | C90: =IF(ISERROR(C50*$C$127*C46/C19)=TRUE,0,C50*$C$127*C46/C19) -> 0.05339301463 | D90: 0.05172233183 | E90: 0.04096942238 | F90: 0.03943474345 | G90: 0.03901499974 | H90: 0.0424784163 | I90: 0.04728187745 | J90: 0.04597407221 | K90: 0.06279030702 | L90: 0.0506165331 | M90: 0.06106484718 | N90: 0.07639215639 | O90: 0.09610478112 | P90: 0.09274419439 | Q90: 0.09934229327 | R90: 0.07432666625 | S90: 0.04970867042 | T90: 0.1187098833 | U90: 0.09503543251 | V90: 0.09980360668 | W90: 0.1048110125 | X90: 0.1100696529 | Y90: 0.1155921329 | Z90: 0.12139169 | AA90: 0.127482226 | AB90: 0.13387834 | AC90: 0.1405953636 | AD90: 0.1476493976 | AE90: =IF(ISERROR(AE50*$C$127*AE46/AE19)=TRUE,0,AE50*$C$127*AE46/AE19) -> 0.1550573509 | AF90: 0.1628369804 | AG90: 0.1710069341 | AH90: -
B91: Voda | C91: =IF(ISERROR(C51/C61*C19*C46)=TRUE,0,C51/C61*C19*C46) -> 11.04315594 | D91: 11.50588149 | E91: 9.636033365 | F91: 7.610869299 | G91: 6.934064144 | H91: 6.726879967 | I91: 6.903796164 | J91: 6.859743365 | K91: 7.149096621 | L91: 8.497683643 | M91: 9.162973205 | N91: 9.637252076 | O91: 11.54350115 | P91: 12.39780612 | Q91: 13.4903554 | R91: 16.84023505 | S91: 14.93473906 | T91: 16.18421113 | U91: 14.076989 | V91: 14.60502995 | W91: 15.1528782 | X91: 15.72127676 | Y91: 16.31099647 | Z91: 16.92283712 | AA91: 17.55762848 | AB91: 18.21623145 | AC91: 18.89953924 | AD91: 19.60847853 | AE91: =IF(ISERROR(AE51/AE61*AE19*AE46)=TRUE,0,AE51/AE61*AE19*AE46) -> 20.3440108 | AF91: 21.10713357 | AG91: 21.89888178 | AH91: -
B92: Mzdové náklady | C92: =IF(ISERROR(C52/C61*C19*C46)=TRUE,0,C52/C61*C19*C46) -> 0 | D92: 0 | E92: 0 | F92: 0 | G92: 0 | H92: 0 | I92: 0 | J92: 55709.64955 | K92: 59435.64158 | L92: 74224.25117 | M92: 86601.62174 | N92: 100413.9461 | O92: 129176.1501 | P92: 146661.916 | Q92: 173566.1224 | R92: 234908.1086 | S92: 251410.647 | T92: 286620.1931 | U92: 272026.939 | V92: 307957.9994 | W92: 348635.0645 | X92: 394685.0169 | Y92: 446817.542 | Z92: 505836.0649 | AA92: 572650.1324 | AB92: 648289.4298 | AC92: 733919.6501 | AD92: 830860.4584 | AE92: =IF(ISERROR(AE52/AE61*AE19*AE46)=TRUE,0,AE52/AE61*AE19*AE46) -> 940605.8295 | AF92: 1064847.072 | AG92: 1205498.894 | AH92: -
B93: Pozemek | C93: =IF(ISERROR(C54/C61*C19*C46)=TRUE,0,C54/C61*C19*C46) -> 1960.96431 | D93: 2043.131789 | E93: 1711.09759 | F93: 1351.483502 | G93: 1231.301304 | H93: 1194.511026 | I93: 1225.926533 | J93: 1218.103954 | K93: 1269.485227 | L93: 1508.957623 | M93: 1627.094965 | N93: 1711.314 | O93: 2049.812017 | P93: 2201.513358 | Q93: 2395.520411 | R93: 2990.367978 | S93: 2652.003687 | T93: 2873.875963 | U93: 2499.690592 | V93: 2593.456311 | W93: 2690.739269 | X93: 2791.671402 | Y93: 2896.389593 | Z93: 3005.03586 | AA93: 3117.75755 | AB93: 3234.707536 | AC93: 3356.044424 | AD93: 3481.932772 | AE93: =IF(ISERROR(AE54/AE61*AE19*AE46)=TRUE,0,AE54/AE61*AE19*AE46) -> 3612.543309 | AF93: 3748.053168 | AG93: 3888.646128 | AH93: -
B94: Výstavba | C94: =IF(ISERROR(C55/C61*C19*C46)=TRUE,0,C55/C61*C19*C46) -> 6255.503346 | D94: 6517.618745 | E94: 5458.425045 | F94: 4311.251116 | G94: 3927.868237 | H94: 3810.50674 | I94: 3910.722644 | J94: 3885.768507 | K94: 4049.67548 | L94: 4813.595746 | M94: 5190.455505 | N94: 5459.115395 | O94: 6538.928766 | P94: 7022.858145 | Q94: 7641.743337 | R94: 9539.315324 | S94: 8459.928545 | T94: 9167.70418 | U94: 7974.047659 | V94: 8273.161603 | W94: 8583.495589 | X94: 8905.470492 | Y94: 9239.522973 | Z94: 9586.106073 | AA94: 9945.689828 | AB94: 10318.7619 | AC94: 10705.82826 | AD94: 11107.41384 | AE94: =IF(ISERROR(AE55/AE61*AE19*AE46)=TRUE,0,AE55/AE61*AE19*AE46) -> 11524.06326 | AF94: 11956.34159 | AG94: 12404.83508 | AH94: -
B95: Pronájem haly | C95: =IF(ISERROR(C56/C61*C19*C46)=TRUE,0,C56/C61*C19*C46) -> 106.9156494 | D95: 111.3955827 | E95: 93.29242205 | F95: 73.6855513 | G95: 67.13298036 | H95: 65.1271017 | I95: 66.83993725 | J95: 66.41343476 | K95: 69.21484328 | L95: 82.27135159 | M95: 88.71243292 | N95: 93.30422115 | O95: 111.759802 | P95: 120.0308589 | Q95: 130.6085068 | R95: 163.0407717 | S95: 144.5924819 | T95: 156.6893968 | U95: 136.2880709 | V95: 141.4003632 | W95: 146.7044224 | X95: 152.2074417 | Y95: 157.9168844 | Z95: 163.8404936 | AA95: 169.9863029 | AB95: 176.3626472 | AC95: 182.9781742 | AD95: 189.8418557 | AE95: =IF(ISERROR(AE56/AE61*AE19*AE46)=TRUE,0,AE56/AE61*AE19*AE46) -> 196.9630002 | AF95: 204.3512656 | AG95: 212.0166716 | AH95: -
B97: - | C97: 2000 | D97: 2001 | E97: 2002 | F97: 2003 | G97: 2004 | H97: 2005 | I97: 2006 | J97: 2007 | K97: 2008 | L97: 2009 | M97: 2010 | N97: 2011 | O97: 2012 | P97: 2013 | Q97: 2014 | R97: 2015 | S97: 2016 | T97: 2017 | U97: 2018 | V97: 2019 | W97: 2020 | X97: 2021 | Y97: 2022 | Z97: 2023 | AA97: 2024 | AB97: 2025 | AC97: 2026 | AD97: 2027 | AE97: 2028 | AF97: 2029 | AG97: 2030 | AH97: Pozn.
B98: Elektřina USA | C98: =C65 -> 1.173391877 | D98: 1.319825882 | E98: 1.047632576 | F98: 0.8857626 | G98: 0.7401528 | H98: 0.7546586355 | I98: 0.7569520305 | J98: 0.649397344 | K98: 0.6367731791 | L98: 0.8330531 | M98: 0.840323 | N98: 0.7520764725 | O98: 0.82421275 | P98: 0.8571915354 | Q98: 0.89464825 | R98: 1.1118635 | S98: 1.22199585 | T98: 1.207837965 | U98: 0.9237756935 | V98: 0.9268007748 | W98: 0.9298357623 | X98: 0.9328806885 | Y98: 0.9359355858 | Z98: 0.9390004871 | AA98: 0.9420754249 | AB98: 0.9451604322 | AC98: 0.9482555419 | AD98: 0.9513607872 | AE98: =AE65 -> 0.9544762012 | AF98: 0.9576018173 | AG98: 0.9607376687 | AH98: -
B99: Elektřina UK | C99: =C73 -> 1.412702062 | D99: 1.342647078 | E99: 1.132752723 | F99: 0.9450015 | G99: 0.9354709 | H99: 1.142768791 | I99: 1.434819521 | J99: 1.317058988 | K99: 1.36061186 | L99: 1.6413243 | M99: 1.4973028 | N99: 1.429830094 | O99: 1.65821425 | P99: 1.739824829 | Q99: 1.9470535 | R99: 2.33688125 | S99: 2.268024298 | T99: 2.992512291 | U99: 2.393978783 | V99: 2.512271978 | W99: 2.636410371 | X99: 2.766682789 | Y99: 2.903392333 | Z99: 3.046857077 | AA99: 3.197410817 | AB99: 3.355403838 | AC99: 3.521203737 | AD99: 3.695196272 | AE99: =AE73 -> 3.877786267 | AF99: 4.069398544 | AG99: 4.27047892 | AH99: -
B100: Elektřina ČR | C100: =C81 -> 1.096195043 | D100: 1.125845709 | E100: 1.07382339 | F100: 0.9703896 | G100: 0.927760975 | H100: 1.061313573 | I100: 1.152374733 | J100: 1.168915219 | K100: 1.408412528 | L100: 1.8052661 | M100: 1.7799569 | N100: 1.764282925 | O100: 1.7893835 | P100: 1.86507656 | Q100: 1.5485095 | R100: 1.571860125 | S100: 1.608146539 | T100: 2.734759143 | U100: 2.182882241 | V100: 2.285617408 | W100: 2.393187702 | X100: 2.505820685 | Y100: 2.623754626 | Z100: 2.747239009 | AA100: 2.876535062 | AB100: 3.011916304 | AC100: 3.153669129 | AD100: 3.302093408 | AE100: =AE81 -> 3.457503127 | AF100: 3.620227049 | AG100: 3.79060941 | AH100: -
